Workbook

Sheet Simulation Inputs (hidden)
A1: Input Label* | B1: Input List Index | C1: Energy Price Trends | D1: # of Trials | E1: Start Year | F1: Analysis Group
A2: Input Choice* | C2: AEO 2010 Reference | D2: 10000 | E2: 2014 | F2: National
A3: Input Choice Index | C3: =MATCH(choice_PriceTrend,list_PriceTrend,0) -> 1
A4: Default Choice Index* | C4: 1 | D4: 5 | E4: 1 | F4: 1
A5: Input List | B5: 1 | C5: AEO 2010 Reference | D5: 100 | E5: 2012 | F5: National
B6: 2 | C6: AEO 2010 High Growth | D6: 1000 | E6: 2013 | F6: Low Income
B7: 3 | C7: AEO 2010 Low Growth | D7: 2000 | E7: 2014 | F7: Senior-Only
B8: 4 | D8: 5000 | E8: 2015
B9: 5 | D9: 10000 | E9: 2016
B10: 6 | D10: 50000
B11: 7
B12: 8
B13: 9
B14: 10
B15: 11
B16: 12
B17: 13
B18: 14
B19: 15
B20: 16
B21: 17
B22: 18
B23: 19
B24: 20
B25: 21
B26: 22
B27: 23
B28: 24
B29: 25
B30: 26
B31: 27
B32: 28
B33: 29
B34: 30
B35: 31
B36: 32
B37: 33
B38: 34
B39: 35
B40: 36
B41: 37
B42: 38
B43: 39
B44: 40
B45: 41
B46: 42
B47: 43
B48: 44
B49: 45
B50: 46
B51: 47
B52: 48
B53: 49
B54: 50

Sheet Forecast Cells (hidden)
A1: Worksheet | B1: Cell Address | C1: Forecast Name | D1: Units | E1: Column | F1: Level | G1: Ref | H1: Eff. Level | J1: Count | K1: Median | L1: Min | M1: Max | N1: Average | O1: 0.05 | P1: 0.25 | Q1: 0.5 | R1: 0.75 | S1: 0.95 | T1: %
A2: Base Case Eff Dist | B2: C6 | C2: Base Case Efficiency - MWO | D2: percent | J2: 10000 | K2: 2 | L2: 1.5 | M2: 4 | N2: 2.8332 | O2: 1.5 | P2: 2 | Q2: 2 | R2: 4 | S2: 4 | T2: 1
A3: Base Case Eff Dist | B3: C8 | C3: Base Case Efficiency - Combo | D3: percent | J3: 10000 | K3: 4.5 | L3: 4.5 | M3: 4.5 | N3: 4.5 | O3: 4.5 | P3: 4.5 | Q3: 4.5 | R3: 4.5 | S3: 4.5 | T3: 1
A4: Lifetime | B4: C5 | C4: Lifetime | D4: years | J4: 10000 | K4: 9.026700717 | L4: 7.302874169 | M4: 10.39510771 | N4: 9.003234569 | O4: 8.16608765 | P4: 8.688675745 | Q4: 9.026512444 | R4: 9.34153199 | S4: 9.739097423 | T4: 1
A5: Discount Rate | B5: C5 | C5: Discount Rate | D5: percent | J5: 10000 | K5: 0.03540270178 | L5: 0 | M5: 0.253 | N5: 0.04832937547 | O5: 0.0002529132535 | P5: 0.01907845047 | Q5: 0.03540108186 | R5: 0.07009666576 | S5: 0.1279917761 | T5: 1
A6: Energy Prices | B6: C6 | C6: Electricity Price | D6: $/kWh | J6: 10000 | K6: 0.1128 | L6: 0.0868 | M6: 0.1875 | N6: 0.1231 | O6: 0.0944 | P6: 0.1036 | Q6: 0.1128 | R6: 0.1385 | S6: 0.1875 | T6: 1
A7: RECS Households | B7: C5 | C7: Relative Use Factor | D7: int | J7: 10000 | K7: 0.6031768162 | L7: 0.0004321017902 | M7: 10.8418694 | N7: 1.012677788 | O7: 0.08868932317 | P7: 0.3127098106 | Q7: 0.6031455517 | R7: 1.221983608 | S7: 3.318190196 | T7: 1
A8: Equipment Cost | B8: =E8 & G8+F8 -> I6 | C8: ="Retail Price w/o Tax - level " & F8 & " - " & H8 -> Retail Price w/o Tax - level 0 - MWO | D8: $ | E8: I | F8: 0 | G8: 6 | H8: MWO | J8: 10000 | K8: 222.7408 | L8: 219.1355 | M8: 227.3386 | N8: 223.2699 | O8: 219.8347 | P8: 221.8187 | Q8: 222.7408 | R8: 225.0475 | S8: 227.3386 | T8: 1
A9: Equipment Cost | B9: =E9 & G9+F9 -> I7 | C9: ="Retail Price w/o Tax - level " & F9 & " - " & H9 -> Retail Price w/o Tax - level 1 - MWO | D9: $ | E9: I | F9: 1 | G9: 6 | H9: MWO | J9: 10000 | K9: 223.1403 | L9: 219.5286 | M9: 227.7464 | N9: 223.6704 | O9: 220.2291 | P9: 222.2166 | Q9: 223.1403 | R9: 225.4512 | S9: 227.7464 | T9: 1
A10: Equipment Cost | B10: I8 | C10: Retail Price w/o Tax - level 2 - MWO | D10: $ | E10: I | F10: 2 | G10: 6 | H10: MWO | J10: 10000 | K10: 223.6331 | L10: 220.0134 | M10: 228.2494 | N10: 224.1644 | O10: 220.7155 | P10: 222.7074 | Q10: 223.6331 | R10: 225.9491 | S10: 228.2494 | T10: 1
A11: Equipment Cost | B11: I9 | C11: Retail Price w/o Tax - level 3 - MWO | D11: $ | E11: I | F11: 3 | G11: 6 | H11: MWO | J11: 10000 | K11: 224.6986 | L11: 221.0617 | M11: 229.3369 | N11: 225.2324 | O11: 221.7671 | P11: 223.7685 | Q11: 224.6986 | R11: 227.0257 | S11: 229.3369 | T11: 1
A12: Equipment Cost | B12: I10 | C12: Retail Price w/o Tax - level 4 - MWO | D12: $ | E12: I | F12: 4 | G12: 6 | H12: MWO | J12: 10000 | K12: 229.5734 | L12: 225.8575 | M12: 234.3122 | N12: 230.1187 | O12: 226.5782 | P12: 228.623 | Q12: 229.5734 | R12: 231.9509 | S12: 234.3122 | T12: 1
A13: Equipment Cost | B13: =E13 & G13+F13 -> I15 | C13: Retail Price w/o Tax - level 0 - Combo | D13: $ | E13: I | F13: 0 | G13: 15 | H13: Combo | J13: 10000 | K13: 481.0239 | L13: 473.2381 | M13: 490.9532 | N13: 482.1665 | O13: 474.7481 | P13: 479.0326 | Q13: 481.0239 | R13: 486.0054 | S13: 490.9532 | T13: 1
A14: Equipment Cost | B14: I16 | C14: Retail Price w/o Tax - level 1 - Combo | D14: $ | E14: I | F14: 1 | G14: 15 | H14: Combo | J14: 10000 | K14: 481.0239 | L14: 473.2381 | M14: 490.9532 | N14: 482.1665 | O14: 474.7481 | P14: 479.0326 | Q14: 481.0239 | R14: 486.0054 | S14: 490.9532 | T14: 1
A15: Equipment Cost | B15: I17 | C15: Retail Price w/o Tax - level 2 - Combo | D15: $ | E15: I | F15: 2 | G15: 15 | H15: Combo | J15: 10000 | K15: 484.4448 | L15: 476.6037 | M15: 494.4447 | N15: 485.5956 | O15: 478.1244 | P15: 482.4394 | Q15: 484.4448 | R15: 489.4618 | S15: 494.4447 | T15: 1
A16: Equipment Cost | B16: I18 | C16: Retail Price w/o Tax - level 3 - Combo | D16: $ | E16: I | F16: 3 | G16: 15 | H16: Combo | J16: 10000 | K16: 495.1158 | L16: 487.1019 | M16: 505.336 | N16: 496.2919 | O16: 488.6562 | P16: 493.0663 | Q16: 495.1158 | R16: 500.2433 | S16: 505.336 | T16: 1
A17: Equipment Cost | B17: I19 | C17: Retail Price w/o Tax - level 4 - Combo | D17: $ | E17: I | F17: 4 | G17: 15 | H17: Combo | J17: 10000 | K17: 488.7646 | L17: 480.8535 | M17: 498.8537 | N17: 489.9256 | O17: 482.3878 | P17: 486.7413 | Q17: 488.7646 | R17: 493.8263 | S17: 498.8537 | T17: 1
A18: LCC & PBP Calcs | B18: =E18 & G18+F18 -> F26 | C18: ="Total Annual Energy Use - level " & F18 & " - " & H18 -> Total Annual Energy Use - level 0 - MWO | D18: kWh | E18: F | F18: 0 | G18: 26 | H18: MWO | J18: 10000 | K18: 34.86869778 | L18: 31.96090909 | M18: 35.03987728 | N18: 34.75239951 | O18: 34.09726015 | P18: 34.69274216 | Q18: 34.86868891 | R18: 34.95117441 | S18: 35.01480821 | T18: 1
A19: LCC & PBP Calcs | B19: F27 | C19: ="Total Annual Energy Use - level " & F19 & " - " & H19 -> Total Annual Energy Use - level 1 - MWO | D19: kWh | E19: F | F19: 1 | G19: 26 | H19: MWO | J19: 10000 | K19: 17.43434889 | L19: 15.98045455 | M19: 17.51993864 | N19: 17.37619975 | O19: 17.04863008 | P19: 17.34637108 | Q19: 17.43434445 | R19: 17.4755872 | S19: 17.50740411 | T19: 1
A20: LCC & PBP Calcs | B20: =E20 & G20+F20 -> F28 | C20: ="Total Annual Energy Use - level " & F20 & " - " & H20 -> Total Annual Energy Use - level 2 - MWO | D20: kWh | E20: F | F20: 2 | G20: 26 | H20: MWO | J20: 10000 | K20: 13.07576167 | L20: 11.98534091 | M20: 13.13995398 | N20: 13.03214982 | O20: 12.78647256 | P20: 13.00977831 | Q20: 13.07575834 | R20: 13.1066904 | S20: 13.13055308 | T20: 1
A21: LCC & PBP Calcs | B21: F29 | C21: Total Annual Energy Use - level 3 - MWO | D21: kWh | E21: F | F21: 3 | G21: 26 | H21: MWO | J21: 10000 | K21: 8.717174446 | L21: 7.990227273 | M21: 8.759969321 | N21: 8.688099877 | O21: 8.524315038 | P21: 8.67318554 | Q21: 8.717172226 | R21: 8.737793602 | S21: 8.753702053 | T21: 1
A22: LCC & PBP Calcs | B22: F30 | C22: Total Annual Energy Use - level 4 - MWO | D22: kWh | E22: F | F22: 4 | G22: 26 | H22: MWO | J22: 10000 | K22: 0.1743434889 | L22: 0.1598045455 | M22: 0.1751993864 | N22: 0.1737619975 | O22: 0.1704863008 | P22: 0.1734637108 | Q22: 0.1743434445 | R22: 0.174755872 | S22: 0.1750740411 | T22: 1
A23: LCC & PBP Calcs | B23: =E23 & G23+F23 -> F36 | C23: Total Annual Energy Use - level 0 - Combo | D23: kWh | E23: F | F23: 0 | G23: 36 | H23: Combo | J23: 10000 | K23: 39.22728501 | L23: 35.95602273 | M23: 39.41986194 | N23: 39.09644945 | O23: 38.35941767 | P23: 39.02933493 | Q23: 39.22727502 | R23: 39.32007121 | S23: 39.39165924 | T23: 1
A24: LCC & PBP Calcs | B24: F37 | C24: Total Annual Energy Use - level 1 - Combo | D24: kWh | E24: F | F24: 1 | G24: 36 | H24: Combo | J24: 10000 | K24: 32.25354545 | L24: 29.56384091 | M24: 32.41188649 | N24: 32.14596955 | O24: 31.53996564 | P24: 32.0907865 | Q24: 32.25353724 | R24: 32.32983633 | S24: 32.3886976 | T24: 1
A25: LCC & PBP Calcs | B25: F38 | C25: Total Annual Energy Use - level 2 - Combo | D25: kWh | E25: F | F25: 2 | G25: 36 | H25: Combo | J25: 10000 | K25: 23.536371 | L25: 21.57361364 | M25: 23.65191717 | N25: 23.45786967 | O25: 23.0156506 | P25: 23.41760096 | Q25: 23.53636501 | R25: 23.59204272 | S25: 23.63499554 | T25: 1
A26: LCC & PBP Calcs | B26: F39 | C26: Total Annual Energy Use - level 3 - Combo | D26: kWh | E26: F | F26: 3 | G26: 36 | H26: Combo | J26: 10000 | K26: 19.17778378 | L26: 17.5785 | M26: 19.27193251 | N26: 19.11381973 | O26: 18.75349308 | P26: 19.08100819 | Q26: 19.1777789 | R26: 19.22314592 | S26: 19.25814452 | T26: 1
A27: LCC & PBP Calcs | B27: F40 | C27: Total Annual Energy Use - level 4 - Combo | D27: kWh | E27: F | F27: 4 | G27: 36 | H27: Combo | J27: 10000 | K27: 0.3486869778 | L27: 0.3196090909 | M27: 0.3503987728 | N27: 0.3475239951 | O27: 0.3409726015 | P27: 0.3469274216 | Q27: 0.3486868891 | R27: 0.3495117441 | S27: 0.3501480821 | T27: 1
A28: LCC & PBP Calcs | B28: =E28 & G28+F28 -> E26 | C28: ="Total Installed Price - level " & F28 & " - " & H28 -> Total Installed Price - level 0 - MWO | D28: $ | E28: E | F28: 0 | G28: 26 | H28: MWO | J28: 10000 | K28: 222.7408 | L28: 219.1355 | M28: 227.3386 | N28: 223.2699 | O28: 219.8347 | P28: 221.8187 | Q28: 222.7408 | R28: 225.0475 | S28: 227.3386 | T28: 1
A29: LCC & PBP Calcs | B29: =E29 & G29+F29 -> E27 | C29: ="Total Installed Price - level " & F29 & " - " & H29 -> Total Installed Price - level 1 - MWO | D29: $ | E29: E | F29: 1 | G29: 26 | H29: MWO | J29: 10000 | K29: 223.1403 | L29: 219.5286 | M29: 227.7464 | N29: 223.6704 | O29: 220.2291 | P29: 222.2166 | Q29: 223.1403 | R29: 225.4512 | S29: 227.7464 | T29: 1
A30: LCC & PBP Calcs | B30: E28 | C30: Total Installed Price - level 2 - MWO | D30: $ | E30: E | F30: 2 | G30: 26 | H30: MWO | J30: 10000 | K30: 223.6331 | L30: 220.0134 | M30: 228.2494 | N30: 224.1644 | O30: 220.7155 | P30: 222.7074 | Q30: 223.6331 | R30: 225.9491 | S30: 228.2494 | T30: 1
A31: LCC & PBP Calcs | B31: E29 | C31: Total Installed Price - level 3 - MWO | D31: $ | E31: E | F31: 3 | G31: 26 | H31: MWO | J31: 10000 | K31: 224.6986 | L31: 221.0617 | M31: 229.3369 | N31: 225.2324 | O31: 221.7671 | P31: 223.7685 | Q31: 224.6986 | R31: 227.0257 | S31: 229.3369 | T31: 1
A32: LCC & PBP Calcs | B32: E30 | C32: Total Installed Price - level 4 - MWO | D32: $ | E32: E | F32: 4 | G32: 26 | H32: MWO | J32: 10000 | K32: 229.5734 | L32: 225.8575 | M32: 234.3122 | N32: 230.1187 | O32: 226.5782 | P32: 228.623 | Q32: 229.5734 | R32: 231.9509 | S32: 234.3122 | T32: 1
A33: LCC & PBP Calcs | B33: =E33 & G33+F33 -> E36 | C33: ="Total Installed Price - level " & F33 & " - " & H33 -> Total Installed Price - level 0 - Combo | D33: $ | E33: E | F33: 0 | G33: 36 | H33: Combo | J33: 10000 | K33: 481.0239 | L33: 473.2381 | M33: 490.9532 | N33: 482.1665 | O33: 474.7481 | P33: 479.0326 | Q33: 481.0239 | R33: 486.0054 | S33: 490.9532 | T33: 1
A34: LCC & PBP Calcs | B34: E37 | C34: Total Installed Price - level 1 - Combo | D34: $ | E34: E | F34: 1 | G34: 36 | H34: Combo | J34: 10000 | K34: 481.0239 | L34: 473.2381 | M34: 490.9532 | N34: 482.1665 | O34: 474.7481 | P34: 479.0326 | Q34: 481.0239 | R34: 486.0054 | S34: 490.9532 | T34: 1
A35: LCC & PBP Calcs | B35: E38 | C35: Total Installed Price - level 2 - Combo | D35: $ | E35: E | F35: 2 | G35: 36 | H35: Combo | J35: 10000 | K35: 484.4448 | L35: 476.6037 | M35: 494.4447 | N35: 485.5956 | O35: 478.1244 | P35: 482.4394 | Q35: 484.4448 | R35: 489.4618 | S35: 494.4447 | T35: 1
A36: LCC & PBP Calcs | B36: E39 | C36: Total Installed Price - level 3 - Combo | D36: $ | E36: E | F36: 3 | G36: 36 | H36: Combo | J36: 10000 | K36: 495.1158 | L36: 487.1019 | M36: 505.336 | N36: 496.2919 | O36: 488.6562 | P36: 493.0663 | Q36: 495.1158 | R36: 500.2433 | S36: 505.336 | T36: 1
A37: LCC & PBP Calcs | B37: E40 | C37: Total Installed Price - level 4 - Combo | D37: $ | E37: E | F37: 4 | G37: 36 | H37: Combo | J37: 10000 | K37: 488.7646 | L37: 480.8535 | M37: 498.8537 | N37: 489.9256 | O37: 482.3878 | P37: 486.7413 | Q37: 488.7646 | R37: 493.8263 | S37: 498.8537 | T37: 1
A38: LCC & PBP Calcs | B38: I26 | C38: ="LCC - level " & F38 & " - " & H38 -> LCC - level 0 - MWO | D38: $ | E38: I | F38: 0 | G38: 26 | H38: MWO | J38: 10000 | K38: 252.2206 | L38: 235.0376 | M38: 293.2529 | N38: 254.2439 | O38: 241.7346 | P38: 247.7453 | Q38: 252.219 | R38: 258.7872 | S38: 273.8733 | T38: 1
A39: LCC & PBP Calcs | B39: =E39 & G39+F39 -> I27 | C39: ="LCC - level " & F39 & " - " & H39 -> LCC - level 1 - MWO | D39: $ | E39: I | F39: 1 | G39: 26 | H39: MWO | J39: 10000 | K39: 237.965 | L39: 227.4933 | M39: 259.9719 | N39: 239.1574 | O39: 232.3756 | P39: 235.5416 | Q39: 237.9648 | R39: 241.6592 | S39: 250.3764 | T39: 1
A40: LCC & PBP Calcs | B40: I28 | C40: LCC - level 2 - MWO | D40: $ | E40: I | F40: 2 | G40: 26 | H40: MWO | J40: 10000 | K40: 234.8169 | L40: 225.987 | M40: 252.0502 | N40: 235.7796 | O40: 230.2375 | P40: 232.835 | Q40: 234.8169 | R40: 237.7224 | S40: 245.0541 | T40: 1
A41: LCC & PBP Calcs | B41: I29 | C41: LCC - level 3 - MWO | D41: $ | E41: I | F41: 3 | G41: 26 | H41: MWO | J41: 10000 | K41: 232.2221 | L41: 225.0441 | M41: 244.7092 | N41: 232.9759 | O41: 228.5761 | P41: 230.6822 | Q41: 232.2201 | R41: 234.1977 | S41: 240.3838 | T41: 1
A42: LCC & PBP Calcs | B42: I30 | C42: LCC - level 4 - MWO | D42: $ | E42: I | F42: 4 | G42: 26 | H42: MWO | J42: 10000 | K42: 229.6713 | L42: 225.9372 | M42: 234.5773 | N42: 230.2736 | O42: 226.7634 | P42: 228.7629 | Q42: 229.6711 | R42: 232.099 | S42: 234.5137 | T42: 1
A43: LCC & PBP Calcs | B43: =E43 & G43+F43 -> I36 | C43: ="LCC - level " & F43 & " - " & H43 -> LCC - level 0 - Combo | D43: $ | E43: I | F43: 0 | G43: 36 | H43: Combo | J43: 10000 | K43: 514.3362 | L43: 491.1586 | M43: 563.5984 | N43: 517.0123 | O43: 501.9036 | P43: 508.9402 | Q43: 514.336 | R43: 522.5766 | S43: 541.9602 | T43: 1
A44: LCC & PBP Calcs | B44: I37 | C44: LCC - level 1 - Combo | D44: $ | E44: I | F44: 1 | G44: 36 | H44: Combo | J44: 10000 | K44: 508.5755 | L44: 487.9728 | M44: 550.1239 | N44: 510.8175 | O44: 497.7207 | P44: 503.8618 | Q44: 508.5743 | R44: 515.5664 | S44: 532.6004 | T44: 1
A45: LCC & PBP Calcs | B45: I38 | C45: LCC - level 2 - Combo | D45: $ | E45: I | F45: 2 | G45: 36 | H45: Combo | J45: 10000 | K45: 504.6826 | L45: 487.356 | M45: 536.75 | N45: 506.503 | O45: 495.7866 | P45: 500.8788 | Q45: 504.6816 | R45: 509.8565 | S45: 524.5572 | T45: 1
A46: LCC & PBP Calcs | B46: I39 | C46: LCC - level 3 - Combo | D46: $ | E46: I | F46: 3 | G46: 36 | H46: Combo | J46: 10000 | K46: 511.6706 | L46: 495.8631 | M46: 539.1499 | N46: 513.3276 | O46: 503.6424 | P46: 508.2761 | Q46: 511.6701 | R46: 516.0156 | S46: 529.6392 | T46: 1
A47: LCC & PBP Calcs | B47: I40 | C47: LCC - level 4 - Combo | D47: $ | E47: I | F47: 4 | G47: 36 | H47: Combo | J47: 10000 | K47: 488.9604 | L47: 481.0128 | M47: 499.3839 | N47: 490.2354 | O47: 482.7582 | P47: 487.021 | Q47: 488.9601 | R47: 494.1226 | S47: 499.2565 | T47: 1
A48: LCC & PBP Calcs | B48: J27 | C48: ="LCC Savings- level " & F48 & " - " & H48 -> LCC Savings- level 1 - MWO | D48: $ | E48: J | F48: 1 | G48: 26 | H48: MWO | J48: 10000 | K48: 0 | L48: 0 | M48: 32.8384 | N48: 6.9583 | O48: 0 | P48: 0 | Q48: 0 | R48: 14.0527 | S48: 20.8349 | T48: 1
A49: LCC & PBP Calcs | B49: J28 | C49: ="LCC Savings- level " & F49 & " - " & H49 -> LCC Savings- level 2 - MWO | D49: $ | E49: J | F49: 2 | G49: 26 | H49: MWO | J49: 10000 | K49: 4.9032 | L49: 0 | M49: 40.6495 | N49: 9.705 | O49: 0 | P49: 2.4258 | Q49: 4.9031 | R49: 17.1687 | S49: 25.647 | T49: 1
A50: LCC & PBP Calcs | B50: J29 | C50: LCC Savings- level 3 - MWO | D50: $ | E50: J | F50: 3 | G50: 26 | H50: MWO | J50: 10000 | K50: 9.1505 | L50: 0.5953 | M50: 47.8799 | N50: 12.5087 | O50: 2.0943 | P50: 4.5395 | Q50: 9.1494 | R50: 19.7124 | S50: 29.8813 | T50: 1
A51: LCC & PBP Calcs | B51: J30 | C51: LCC Savings- level 4 - MWO | D51: $ | E51: J | F51: 4 | G51: 26 | H51: MWO | J51: 10000 | K51: 12.7394 | L51: -1.0626 | M51: 59.2258 | N51: 15.211 | O51: 2.7952 | P51: 6.6667 | Q51: 12.739 | R51: 22.023 | S51: 35.3392 | T51: 1
A52: LCC & PBP Calcs | B52: =E52 & G52+F52 -> J37 | C52: ="LCC Savings- level " & F52 & " - " & H52 -> LCC Savings- level 1 - Combo | D52: $ | E52: J | F52: 1 | G52: 36 | H52: Combo | J52: 10000 | K52: 5.9137 | L52: 2.4946 | M52: 13.4745 | N52: 6.1948 | O52: 3.8199 | P52: 4.9921 | Q52: 5.9136 | R52: 7.023 | S52: 9.6967 | T52: 1
A53: LCC & PBP Calcs | B53: J38 | C53: LCC Savings- level 2 - Combo | D53: $ | E53: J | F53: 2 | G53: 36 | H53: Combo | J53: 10000 | K53: 9.8862 | L53: 2.1946 | M53: 26.8483 | N53: 10.5092 | O53: 5.1742 | P53: 7.8149 | Q53: 9.8855 | R53: 12.3676 | S53: 18.3594 | T53: 1
A54: LCC & PBP Calcs | B54: J39 | C54: LCC Savings- level 3 - Combo | D54: $ | E54: J | F54: 3 | G54: 36 | H54: Combo | J54: 10000 | K54: 2.9184 | L54: -7.0026 | M54: 24.4484 | N54: 3.6846 | O54: -3.1075 | P54: 0.2328 | Q54: 2.9181 | R54: 6.0316 | S54: 13.6897 | T54: 1
A55: LCC & PBP Calcs | B55: J40 | C55: LCC Savings- level 4 - Combo | D55: $ | E55: J | F55: 4 | G55: 36 | H55: Combo | J55: 10000 | K55: 25.2317 | L55: 6.1728 | M55: 67.2702 | N55: 26.7769 | O55: 13.5521 | P55: 20.0962 | Q55: 25.2307 | R55: 31.3785 | S55: 46.2365 | T55: 1
A56: LCC & PBP Calcs | B56: M27 | C56: ="Payback Period - level " & F56 & " - " & H56 -> Payback Period - level 1 - MWO | D56: years | E56: M | F56: 1 | G56: 26 | H56: MWO | J56: 4629 | K56: 0.2074480787 | L56: 0.1261822648 | M56: 0.2930391754 | N56: 0.1992555772 | O56: 0.1279035835 | P56: 0.1685833836 | Q56: 0.2074450756 | R56: 0.2183012699 | S56: 0.2510849836 | T56: 0.4629
A57: LCC & PBP Calcs | B57: M28 | C57: ="Payback Period - level " & F57 & " - " & H57 -> Payback Period - level 2 - MWO | D57: years | E57: M | F57: 2 | G57: 26 | H57: MWO | J57: 8148 | K57: 0.4411799342 | L57: 0.2254456465 | M57: 1.451497435 | N57: 0.627114659 | O57: 0.2304971583 | P57: 0.3694368529 | Q57: 0.4411788129 | R57: 1.019247632 | S57: 1.218121821 | T57: 0.8148
A58: LCC & PBP Calcs | B58: M29 | C58: Payback Period - level 3 - MWO | D58: years | E58: M | F58: 3 | G58: 26 | H58: MWO | J58: 10000 | K58: 1.148212427 | L58: 0.4121953985 | M58: 3.099775716 | N58: 1.241207011 | O58: 0.4809698674 | P58: 0.6801376675 | Q58: 1.148165837 | R58: 1.695645305 | S58: 2.323481985 | T58: 1
A59: LCC & PBP Calcs | B59: M30 | C59: Payback Period - level 4 - MWO | D59: years | E59: M | F59: 4 | G59: 26 | H59: MWO | J59: 10000 | K59: 2.406196977 | L59: 1.084279763 | M59: 5.838260005 | N59: 2.67312708 | O59: 1.265190965 | P59: 1.789101751 | Q59: 2.406163131 | R59: 3.527780204 | S59: 4.447936815 | T59: 1
A60: LCC & PBP Calcs | B60: =E60 & G60+F60 -> M37 | C60: ="Payback Period - level " & F60 & " - " & H60 -> Payback Period - level 1 - Combo | D60: years | E60: M | F60: 1 | G60: 36 | H60: Combo | J60: 10000 | K60: 0 | L60: 0 | M60: 0 | N60: 0 | O60: 0 | P60: 0 | Q60: 0 | R60: 0 | S60: 0 | T60: 1
A61: LCC & PBP Calcs | B61: M38 | C61: Payback Period - level 2 - Combo | D61: years | E61: M | F61: 2 | G61: 36 | H61: Combo | J61: 10000 | K61: 1.974131108 | L61: 1.200267567 | M61: 2.798921748 | N61: 1.895074021 | O61: 1.215355428 | P61: 1.603941856 | Q61: 1.974129647 | R61: 2.075604604 | S61: 2.385929422 | T61: 1
A62: LCC & PBP Calcs | B62: M39 | C62: Payback Period - level 3 - Combo | D62: years | E62: M | F62: 3 | G62: 36 | H62: Combo | J62: 10000 | K62: 6.364207783 | L62: 3.869424964 | M62: 9.023169485 | N62: 6.109343389 | O62: 3.91806524 | P62: 5.17079094 | Q62: 6.364203075 | R62: 6.691338242 | S62: 7.691764004 | T62: 1
A63: LCC & PBP Calcs | B63: M40 | C63: Payback Period - level 4 - Combo | D63: years | E63: M | F63: 4 | G63: 36 | H63: Combo | J63: 10000 | K63: 1.802802121 | L63: 1.096099903 | M63: 2.556011627 | N63: 1.730606165 | O63: 1.109878333 | P63: 1.464740498 | Q63: 1.802800788 | R63: 1.895469034 | S63: 2.17886168 | T63: 1
A64: LCC & PBP Calcs | B64: =E64 & G64+F64 -> N26 | C64: ="Total Oper. Cost - level " & F64 & " - " & H64 -> Total Oper. Cost - level 0 - MWO | D64: $ | E64: N | F64: 0 | G64: 26 | H64: MWO | J64: 10000 | K64: 29.56829963 | L64: 12.47302237 | M64: 67.37225786 | N64: 30.97399171 | O64: 19.09948352 | P64: 24.96030608 | Q64: 29.56811756 | R64: 35.11483796 | S64: 48.48367448 | T64: 1
A65: LCC & PBP Calcs | B65: N27 | C65: ="Total Oper. Cost - level " & F65 & " - " & H65 -> Total Oper. Cost - level 1 - MWO | D65: $ | E65: N | F65: 1 | G65: 26 | H65: MWO | J65: 10000 | K65: 14.78414981 | L65: 6.236511187 | M65: 33.68612893 | N65: 15.48699585 | O65: 9.549741758 | P65: 12.48015304 | Q65: 14.78405878 | R65: 17.55741898 | S65: 24.24183724 | T65: 1
A66: LCC & PBP Calcs | B66: N28 | C66: ="Total Oper. Cost - level " & F66 & " - " & H66 -> Total Oper. Cost - level 2 - MWO | D66: $ | E66: N | F66: 2 | G66: 26 | H66: MWO | J66: 10000 | K66: 11.08811236 | L66: 4.67738339 | M66: 25.2645967 | N66: 11.61524689 | O66: 7.162306319 | P66: 9.360114779 | Q66: 11.08804409 | R66: 13.16806423 | S66: 18.18137793 | T66: 1
A67: LCC & PBP Calcs | B67: =E67 & G67+F67 -> N29 | C67: ="Total Oper. Cost - level " & F67 & " - " & H67 -> Total Oper. Cost - level 3 - MWO | D67: $ | E67: N | F67: 3 | G67: 26 | H67: MWO | J67: 10000 | K67: 7.392074907 | L67: 3.118255594 | M67: 16.84306446 | N67: 7.743497927 | O67: 4.774870879 | P67: 6.240076519 | Q67: 7.39202939 | R67: 8.778709489 | S67: 12.12091862 | T67: 1
A68: LCC & PBP Calcs | B68: N30 | C68: Total Oper. Cost - level 4 - MWO | D68: $ | E68: N | F68: 4 | G68: 26 | H68: MWO | J68: 10000 | K68: 0.1478414981 | L68: 0.06236511187 | M68: 0.3368612893 | N68: 0.1548699585 | O68: 0.09549741758 | P68: 0.1248015304 | Q68: 0.1478405878 | R68: 0.1755741898 | S68: 0.2424183724 | T68: 1
A69: LCC & PBP Calcs | B69: =E69 & G69+F69 -> N36 | C69: ="Total Oper. Cost - level " & F69 & " - " & H69 -> Total Oper. Cost - level 0 - Combo | D69: $ | E69: N | F69: 0 | G69: 36 | H69: Combo | J69: 10000 | K69: 33.26433708 | L69: 14.03215017 | M69: 75.79379009 | N69: 34.84574067 | O69: 21.48691896 | P69: 28.08034434 | Q69: 33.26413226 | R69: 39.5041927 | S69: 54.54413379 | T69: 1
A70: LCC & PBP Calcs | B70: N37 | C70: Total Oper. Cost - level 1 - Combo | D70: $ | E70: N | F70: 1 | G70: 36 | H70: Combo | J70: 10000 | K70: 27.35067716 | L70: 11.5375457 | M70: 62.31933852 | N70: 28.65094233 | O70: 17.66702225 | P70: 23.08828312 | Q70: 27.35050874 | R70: 32.48122511 | S70: 44.84739889 | T70: 1
A71: LCC & PBP Calcs | B71: N38 | C71: Total Oper. Cost - level 2 - Combo | D71: $ | E71: N | F71: 2 | G71: 36 | H71: Combo | J71: 10000 | K71: 19.95860225 | L71: 8.419290103 | M71: 45.47627405 | N71: 20.9074444 | O71: 12.89215137 | P71: 16.8482066 | Q71: 19.95847935 | R71: 23.70251562 | S71: 32.72648027 | T71: 1
A72: LCC & PBP Calcs | B72: N39 | C72: Total Oper. Cost - level 3 - Combo | D72: $ | E72: N | F72: 3 | G72: 36 | H72: Combo | J72: 10000 | K72: 16.2625648 | L72: 6.860162306 | M72: 37.05474182 | N72: 17.03569544 | O72: 10.50471593 | P72: 13.72816834 | Q72: 16.26246466 | R72: 19.31316088 | S72: 26.66602096 | T72: 1
A73: LCC & PBP Calcs | B73: =E73 & G73+F73 -> N40 | C73: ="Total Oper. Cost - level " & F73 & " - " & H73 -> Total Oper. Cost - level 4 - Combo | D73: $ | E73: N | F73: 4 | G73: 36 | H73: Combo | J73: 10000 | K73: 0.2956829963 | L73: 0.1247302237 | M73: 0.6737225786 | N73: 0.3097399171 | O73: 0.1909948352 | P73: 0.2496030608 | Q73: 0.2956811756 | R73: 0.3511483796 | S73: 0.4848367448 | T73: 1
A74: LCC & PBP Calcs | B74: O27 | C74: ="Net Cost - level " & F74 & " - " & H74 -> Net Cost - level 1 - MWO | D74: int | E74: O | F74: 1 | G74: 26 | H74: MWO | J74: 0 | K74: NA | L74: NA | M74: NA | N74: NA | O74: NA | P74: NA | Q74: NA | R74: NA | S74: NA | T74: 0
A75: LCC & PBP Calcs | B75: O28 | C75: ="Net Cost - level " & F75 & " - " & H75 -> Net Cost - level 2 - MWO | D75: int | E75: O | F75: 2 | G75: 26 | H75: MWO | J75: 0 | K75: NA | L75: NA | M75: NA | N75: NA | O75: NA | P75: NA | Q75: NA | R75: NA | S75: NA | T75: 0
A76: LCC & PBP Calcs | B76: O29 | C76: Net Cost - level 3 - MWO | D76: int | E76: O | F76: 3 | G76: 26 | H76: MWO | J76: 0 | K76: NA | L76: NA | M76: NA | N76: NA | O76: NA | P76: NA | Q76: NA | R76: NA | S76: NA | T76: 0
A77: LCC & PBP Calcs | B77: =E77 & G77+F77 -> O30 | C77: Net Cost - level 4 - MWO | D77: int | E77: O | F77: 4 | G77: 26 | H77: MWO | J77: 16 | K77: 1 | L77: 1 | M77: 1 | N77: 1 | O77: 1 | P77: 1 | Q77: 1 | R77: 1 | S77: 1 | T77: 0.0016
A78: LCC & PBP Calcs | B78: =E78 & G78+F78 -> O37 | C78: ="Net Cost - level " & F78 & " - " & H78 -> Net Cost - level 1 - Combo | D78: int | E78: O | F78: 1 | G78: 36 | H78: Combo | J78: 0 | K78: NA | L78: NA | M78: NA | N78: NA | O78: NA | P78: NA | Q78: NA | R78: NA | S78: NA | T78: 0
A79: LCC & PBP Calcs | B79: O38 | C79: Net Cost - level 2 - Combo | D79: int | E79: O | F79: 2 | G79: 36 | H79: Combo | J79: 0 | K79: NA | L79: NA | M79: NA | N79: NA | O79: NA | P79: NA | Q79: NA | R79: NA | S79: NA | T79: 0
A80: LCC & PBP Calcs | B80: O39 | C80: Net Cost - level 3 - Combo | D80: int | E80: O | F80: 3 | G80: 36 | H80: Combo | J80: 2304 | K80: 1 | L80: 1 | M80: 1 | N80: 1 | O80: 1 | P80: 1 | Q80: 1 | R80: 1 | S80: 1 | T80: 0.2304
A81: LCC & PBP Calcs | B81: O40 | C81: Net Cost - level 4 - Combo | D81: int | E81: O | F81: 4 | G81: 36 | H81: Combo | J81: 0 | K81: NA | L81: NA | M81: NA | N81: NA | O81: NA | P81: NA | Q81: NA | R81: NA | S81: NA | T81: 0
A82: LCC & PBP Calcs | B82: P27 | C82: ="No Impact - level " & F82 & " - " & H82 -> No Impact - level 1 - MWO | D82: int | E82: P | F82: 1 | G82: 26 | H82: MWO | J82: 5371 | K82: 1 | L82: 1 | M82: 1 | N82: 1 | O82: 1 | P82: 1 | Q82: 1 | R82: 1 | S82: 1 | T82: 0.5371
A83: LCC & PBP Calcs | B83: P28 | C83: ="No Impact - level " & F83 & " - " & H83 -> No Impact - level 2 - MWO | D83: int | E83: P | F83: 2 | G83: 26 | H83: MWO | J83: 1852 | K83: 1 | L83: 1 | M83: 1 | N83: 1 | O83: 1 | P83: 1 | Q83: 1 | R83: 1 | S83: 1 | T83: 0.1852
A84: LCC & PBP Calcs | B84: P29 | C84: No Impact - level 3 - MWO | D84: int | E84: P | F84: 3 | G84: 26 | H84: MWO | J84: 0 | K84: NA | L84: NA | M84: NA | N84: NA | O84: NA | P84: NA | Q84: NA | R84: NA | S84: NA | T84: 0
A85: LCC & PBP Calcs | B85: =E85 & G85+F85 -> P30 | C85: No Impact - level 4 - MWO | D85: int | E85: P | F85: 4 | G85: 26 | H85: MWO | J85: 0 | K85: NA | L85: NA | M85: NA | N85: NA | O85: NA | P85: NA | Q85: NA | R85: NA | S85: NA | T85: 0
A86: LCC & PBP Calcs | B86: =E86 & G86+F86 -> P37 | C86: ="No Impact - level " & F86 & " - " & H86 -> No Impact - level 1 - Combo | D86: int | E86: P | F86: 1 | G86: 36 | H86: Combo | J86: 0 | K86: NA | L86: NA | M86: NA | N86: NA | O86: NA | P86: NA | Q86: NA | R86: NA | S86: NA | T86: 0
A87: LCC & PBP Calcs | B87: P38 | C87: No Impact - level 2 - Combo | D87: int | E87: P | F87: 2 | G87: 36 | H87: Combo | J87: 0 | K87: NA | L87: NA | M87: NA | N87: NA | O87: NA | P87: NA | Q87: NA | R87: NA | S87: NA | T87: 0
A88: LCC & PBP Calcs | B88: P39 | C88: No Impact - level 3 - Combo | D88: int | E88: P | F88: 3 | G88: 36 | H88: Combo | J88: 0 | K88: NA | L88: NA | M88: NA | N88: NA | O88: NA | P88: NA | Q88: NA | R88: NA | S88: NA | T88: 0
A89: LCC & PBP Calcs | B89: P40 | C89: No Impact - level 4 - Combo | D89: int | E89: P | F89: 4 | G89: 36 | H89: Combo | J89: 0 | K89: NA | L89: NA | M89: NA | N89: NA | O89: NA | P89: NA | Q89: NA | R89: NA | S89: NA | T89: 0
A90: LCC & PBP Calcs | B90: Q27 | C90: ="Net Benefit - level " & F90 & " - " & H90 -> Net Benefit - level 1 - MWO | D90: int | E90: Q | F90: 1 | G90: 26 | H90: MWO | J90: 4629 | K90: 1 | L90: 1 | M90: 1 | N90: 1 | O90: 1 | P90: 1 | Q90: 1 | R90: 1 | S90: 1 | T90: 0.4629
A91: LCC & PBP Calcs | B91: Q28 | C91: ="Net Benefit - level " & F91 & " - " & H91 -> Net Benefit - level 2 - MWO | D91: int | E91: Q | F91: 2 | G91: 26 | H91: MWO | J91: 8148 | K91: 1 | L91: 1 | M91: 1 | N91: 1 | O91: 1 | P91: 1 | Q91: 1 | R91: 1 | S91: 1 | T91: 0.8148
A92: LCC & PBP Calcs | B92: Q29 | C92: Net Benefit - level 3 - MWO | D92: int | E92: Q | F92: 3 | G92: 26 | H92: MWO | J92: 10000 | K92: 1 | L92: 1 | M92: 1 | N92: 1 | O92: 1 | P92: 1 | Q92: 1 | R92: 1 | S92: 1 | T92: 1
A93: LCC & PBP Calcs | B93: =E93 & G93+F93 -> Q30 | C93: Net Benefit - level 4 - MWO | D93: int | E93: Q | F93: 4 | G93: 26 | H93: MWO | J93: 9984 | K93: 1 | L93: 1 | M93: 1 | N93: 1 | O93: 1 | P93: 1 | Q93: 1 | R93: 1 | S93: 1 | T93: 0.9984
A94: LCC & PBP Calcs | B94: =E94 & G94+F94 -> Q37 | C94: ="Net Benefit - level " & F94 & " - " & H94 -> Net Benefit - level 1 - Combo | D94: int | E94: Q | F94: 1 | G94: 36 | H94: Combo | J94: 10000 | K94: 1 | L94: 1 | M94: 1 | N94: 1 | O94: 1 | P94: 1 | Q94: 1 | R94: 1 | S94: 1 | T94: 1
A95: LCC & PBP Calcs | B95: Q38 | C95: Net Benefit - level 2 - Combo | D95: int | E95: Q | F95: 2 | G95: 36 | H95: Combo | J95: 10000 | K95: 1 | L95: 1 | M95: 1 | N95: 1 | O95: 1 | P95: 1 | Q95: 1 | R95: 1 | S95: 1 | T95: 1
A96: LCC & PBP Calcs | B96: Q39 | C96: Net Benefit - level 3 - Combo | D96: int | E96: Q | F96: 3 | G96: 36 | H96: Combo | J96: 7696 | K96: 1 | L96: 1 | M96: 1 | N96: 1 | O96: 1 | P96: 1 | Q96: 1 | R96: 1 | S96: 1 | T96: 0.7696
A97: LCC & PBP Calcs | B97: Q40 | C97: Net Benefit - level 4 - Combo | D97: int | E97: Q | F97: 4 | G97: 36 | H97: Combo | J97: 10000 | K97: 1 | L97: 1 | M97: 1 | N97: 1 | O97: 1 | P97: 1 | Q97: 1 | R97: 1 | S97: 1 | T97: 1
A98: LCC & PBP Calcs | B98: R27 | C98: ="PB Undefined - level " & F98 & " - " & H98 -> PB Undefined - level 1 - MWO | D98: int | E98: R | F98: 1 | G98: 26 | H98: MWO | J98: 0 | K98: NA | L98: NA | M98: NA | N98: NA | O98: NA | P98: NA | Q98: NA | R98: NA | S98: NA | T98: 0
A99: LCC & PBP Calcs | B99: R28 | C99: ="PB Undefined - level " & F99 & " - " & H99 -> PB Undefined - level 2 - MWO | D99: int | E99: R | F99: 2 | G99: 26 | H99: MWO | J99: 0 | K99: NA | L99: NA | M99: NA | N99: NA | O99: NA | P99: NA | Q99: NA | R99: NA | S99: NA | T99: 0
A100: LCC & PBP Calcs | B100: R29 | C100: PB Undefined - level 3 - MWO | D100: int | E100: R | F100: 3 | G100: 26 | H100: MWO | J100: 0 | K100: NA | L100: NA | M100: NA | N100: NA | O100: NA | P100: NA | Q100: NA | R100: NA | S100: NA | T100: 0
A101: LCC & PBP Calcs | B101: =E101 & G101+F101 -> R30 | C101: PB Undefined - level 4 - MWO | D101: int | E101: R | F101: 4 | G101: 26 | H101: MWO | J101: 0 | K101: NA | L101: NA | M101: NA | N101: NA | O101: NA | P101: NA | Q101: NA | R101: NA | S101: NA | T101: 0
A102: LCC & PBP Calcs | B102: =E102 & G102+F102 -> R37 | C102: ="PB Undefined - level " & F102 & " - " & H102 -> PB Undefined - level 1 - Combo | D102: int | E102: R | F102: 1 | G102: 36 | H102: Combo | J102: 0 | K102: NA | L102: NA | M102: NA | N102: NA | O102: NA | P102: NA | Q102: NA | R102: NA | S102: NA | T102: 0
A103: LCC & PBP Calcs | B103: R38 | C103: PB Undefined - level 2 - Combo | D103: int | E103: R | F103: 2 | G103: 36 | H103: Combo | J103: 0 | K103: NA | L103: NA | M103: NA | N103: NA | O103: NA | P103: NA | Q103: NA | R103: NA | S103: NA | T103: 0
A104: LCC & PBP Calcs | B104: R39 | C104: PB Undefined - level 3 - Combo | D104: int | E104: R | F104: 3 | G104: 36 | H104: Combo | J104: 0 | K104: NA | L104: NA | M104: NA | N104: NA | O104: NA | P104: NA | Q104: NA | R104: NA | S104: NA | T104: 0
A105: LCC & PBP Calcs | B105: R40 | C105: PB Undefined - level 4 - Combo | D105: int | E105: R | F105: 4 | G105: 36 | H105: Combo | J105: 0 | K105: NA | L105: NA | M105: NA | N105: NA | O105: NA | P105: NA | Q105: NA | R105: NA | S105: NA | T105: 0
A106: RECS Households | B106: C7 | C106: Use Percentage | D106: % | J106: 10000 | K106: 0.2197967649 | L106: 0.05340797735 | M106: 0.9999895054 | N106: 0.3065864993 | O106: 0.09272330016 | P106: 0.1492229222 | Q106: 0.2197748864 | R106: 0.3595862884 | S106: 0.9648894559 | T106: 1
A107: END

Sheet Statistics
B1: Statistics
B3: Household Characteristics | H3: Percentile
D4: median | E4: min | F4: max | G4: average | H4: 0.05 | I4: 0.25 | J4: 0.5 | K4: 0.75 | L4: 0.95
B5: ='Forecast Cells'!C2 -> Base Case Efficiency - MWO | D5: ='Forecast Cells'!K2 -> 2 | E5: ='Forecast Cells'!L2 -> 1.5 | F5: ='Forecast Cells'!M2 -> 4 | G5: ='Forecast Cells'!N2 -> 2.8332 | H5: ='Forecast Cells'!O2 -> 1.5 | I5: ='Forecast Cells'!P2 -> 2 | J5: ='Forecast Cells'!Q2 -> 2 | K5: ='Forecast Cells'!R2 -> 4 | L5: ='Forecast Cells'!S2 -> 4
B6: ='Forecast Cells'!C3 -> Base Case Efficiency - Combo | D6: ='Forecast Cells'!K3 -> 4.5 | E6: ='Forecast Cells'!L3 -> 4.5 | F6: ='Forecast Cells'!M3 -> 4.5 | G6: ='Forecast Cells'!N3 -> 4.5 | H6: ='Forecast Cells'!O3 -> 4.5 | I6: ='Forecast Cells'!P3 -> 4.5 | J6: ='Forecast Cells'!Q3 -> 4.5 | K6: ='Forecast Cells'!R3 -> 4.5 | L6: ='Forecast Cells'!S3 -> 4.5
B7: ='Forecast Cells'!C4 -> Lifetime | D7: ='Forecast Cells'!K4 -> 9.026700717 | E7: ='Forecast Cells'!L4 -> 7.302874169 | F7: ='Forecast Cells'!M4 -> 10.39510771 | G7: ='Forecast Cells'!N4 -> 9.003234569 | H7: ='Forecast Cells'!O4 -> 8.16608765 | I7: ='Forecast Cells'!P4 -> 8.688675745 | J7: ='Forecast Cells'!Q4 -> 9.026512444 | K7: ='Forecast Cells'!R4 -> 9.34153199 | L7: ='Forecast Cells'!S4 -> 9.739097423
B8: ='Forecast Cells'!C5 -> Discount Rate | D8: ='Forecast Cells'!K5 -> 0.03540270178 | E8: ='Forecast Cells'!L5 -> 0 | F8: ='Forecast Cells'!M5 -> 0.253 | G8: ='Forecast Cells'!N5 -> 0.04832937547 | H8: ='Forecast Cells'!O5 -> 0.0002529132535 | I8: ='Forecast Cells'!P5 -> 0.01907845047 | J8: ='Forecast Cells'!Q5 -> 0.03540108186 | K8: ='Forecast Cells'!R5 -> 0.07009666576 | L8: ='Forecast Cells'!S5 -> 0.1279917761
B9: ='Forecast Cells'!C6 -> Electricity Price | D9: ='Forecast Cells'!K6 -> 0.1128 | E9: ='Forecast Cells'!L6 -> 0.0868 | F9: ='Forecast Cells'!M6 -> 0.1875 | G9: ='Forecast Cells'!N6 -> 0.1231 | H9: ='Forecast Cells'!O6 -> 0.0944 | I9: ='Forecast Cells'!P6 -> 0.1036 | J9: ='Forecast Cells'!Q6 -> 0.1128 | K9: ='Forecast Cells'!R6 -> 0.1385 | L9: ='Forecast Cells'!S6 -> 0.1875
B10: ='Forecast Cells'!C7 -> Relative Use Factor | D10: ='Forecast Cells'!K7 -> 0.6031768162 | E10: ='Forecast Cells'!L7 -> 0.0004321017902 | F10: ='Forecast Cells'!M7 -> 10.8418694 | G10: ='Forecast Cells'!N7 -> 1.012677788 | H10: ='Forecast Cells'!O7 -> 0.08868932317 | I10: ='Forecast Cells'!P7 -> 0.3127098106 | J10: ='Forecast Cells'!Q7 -> 0.6031455517 | K10: ='Forecast Cells'!R7 -> 1.221983608 | L10: ='Forecast Cells'!S7 -> 3.318190196
B12: Annual Electricity Use (kWh) | H12: Percentile
D13: median | E13: min | F13: max | G13: average | H13: 0.05 | I13: 0.25 | J13: 0.5 | K13: 0.75 | L13: 0.95
B14: 0 | C14: ='Forecast Cells'!C18 -> Total Annual Energy Use - level 0 - MWO | D14: ='Forecast Cells'!K18 -> 34.86869778 | E14: ='Forecast Cells'!L18 -> 31.96090909 | F14: ='Forecast Cells'!M18 -> 35.03987728 | G14: ='Forecast Cells'!N18 -> 34.75239951 | H14: ='Forecast Cells'!O18 -> 34.09726015 | I14: ='Forecast Cells'!P18 -> 34.69274216 | J14: ='Forecast Cells'!Q18 -> 34.86868891 | K14: ='Forecast Cells'!R18 -> 34.95117441 | L14: ='Forecast Cells'!S18 -> 35.01480821
B15: 1 | C15: ='Forecast Cells'!C19 -> Total Annual Energy Use - level 1 - MWO | D15: ='Forecast Cells'!K19 -> 17.43434889 | E15: ='Forecast Cells'!L19 -> 15.98045455 | F15: ='Forecast Cells'!M19 -> 17.51993864 | G15: ='Forecast Cells'!N19 -> 17.37619975 | H15: ='Forecast Cells'!O19 -> 17.04863008 | I15: ='Forecast Cells'!P19 -> 17.34637108 | J15: ='Forecast Cells'!Q19 -> 17.43434445 | K15: ='Forecast Cells'!R19 -> 17.4755872 | L15: ='Forecast Cells'!S19 -> 17.50740411
B16: 2 | C16: ='Forecast Cells'!C20 -> Total Annual Energy Use - level 2 - MWO | D16: ='Forecast Cells'!K20 -> 13.07576167 | E16: ='Forecast Cells'!L20 -> 11.98534091 | F16: ='Forecast Cells'!M20 -> 13.13995398 | G16: ='Forecast Cells'!N20 -> 13.03214982 | H16: ='Forecast Cells'!O20 -> 12.78647256 | I16: ='Forecast Cells'!P20 -> 13.00977831 | J16: ='Forecast Cells'!Q20 -> 13.07575834 | K16: ='Forecast Cells'!R20 -> 13.1066904 | L16: ='Forecast Cells'!S20 -> 13.13055308
B17: 3 | C17: ='Forecast Cells'!C21 -> Total Annual Energy Use - level 3 - MWO | D17: ='Forecast Cells'!K21 -> 8.717174446 | E17: ='Forecast Cells'!L21 -> 7.990227273 | F17: ='Forecast Cells'!M21 -> 8.759969321 | G17: ='Forecast Cells'!N21 -> 8.688099877 | H17: ='Forecast Cells'!O21 -> 8.524315038 | I17: ='Forecast Cells'!P21 -> 8.67318554 | J17: ='Forecast Cells'!Q21 -> 8.717172226 | K17: ='Forecast Cells'!R21 -> 8.737793602 | L17: ='Forecast Cells'!S21 -> 8.753702053
B18: 4 | C18: ='Forecast Cells'!C22 -> Total Annual Energy Use - level 4 - MWO | D18: ='Forecast Cells'!K22 -> 0.1743434889 | E18: ='Forecast Cells'!L22 -> 0.1598045455 | F18: ='Forecast Cells'!M22 -> 0.1751993864 | G18: ='Forecast Cells'!N22 -> 0.1737619975 | H18: ='Forecast Cells'!O22 -> 0.1704863008 | I18: ='Forecast Cells'!P22 -> 0.1734637108 | J18: ='Forecast Cells'!Q22 -> 0.1743434445 | K18: ='Forecast Cells'!R22 -> 0.174755872 | L18: ='Forecast Cells'!S22 -> 0.1750740411
B19: 0 | C19: ='Forecast Cells'!C23 -> Total Annual Energy Use - level 0 - Combo | D19: ='Forecast Cells'!K23 -> 39.22728501 | E19: ='Forecast Cells'!L23 -> 35.95602273 | F19: ='Forecast Cells'!M23 -> 39.41986194 | G19: ='Forecast Cells'!N23 -> 39.09644945 | H19: ='Forecast Cells'!O23 -> 38.35941767 | I19: ='Forecast Cells'!P23 -> 39.02933493 | J19: ='Forecast Cells'!Q23 -> 39.22727502 | K19: ='Forecast Cells'!R23 -> 39.32007121 | L19: ='Forecast Cells'!S23 -> 39.39165924
B20: 1 | C20: ='Forecast Cells'!C24 -> Total Annual Energy Use - level 1 - Combo | D20: ='Forecast Cells'!K24 -> 32.25354545 | E20: ='Forecast Cells'!L24 -> 29.56384091 | F20: ='Forecast Cells'!M24 -> 32.41188649 | G20: ='Forecast Cells'!N24 -> 32.14596955 | H20: ='Forecast Cells'!O24 -> 31.53996564 | I20: ='Forecast Cells'!P24 -> 32.0907865 | J20: ='Forecast Cells'!Q24 -> 32.25353724 | K20: ='Forecast Cells'!R24 -> 32.32983633 | L20: ='Forecast Cells'!S24 -> 32.3886976
B21: 2 | C21: ='Forecast Cells'!C25 -> Total Annual Energy Use - level 2 - Combo | D21: ='Forecast Cells'!K25 -> 23.536371 | E21: ='Forecast Cells'!L25 -> 21.57361364 | F21: ='Forecast Cells'!M25 -> 23.65191717 | G21: ='Forecast Cells'!N25 -> 23.45786967 | H21: ='Forecast Cells'!O25 -> 23.0156506 | I21: ='Forecast Cells'!P25 -> 23.41760096 | J21: ='Forecast Cells'!Q25 -> 23.53636501 | K21: ='Forecast Cells'!R25 -> 23.59204272 | L21: ='Forecast Cells'!S25 -> 23.63499554
B22: 3 | C22: ='Forecast Cells'!C26 -> Total Annual Energy Use - level 3 - Combo | D22: ='Forecast Cells'!K26 -> 19.17778378 | E22: ='Forecast Cells'!L26 -> 17.5785 | F22: ='Forecast Cells'!M26 -> 19.27193251 | G22: ='Forecast Cells'!N26 -> 19.11381973 | H22: ='Forecast Cells'!O26 -> 18.75349308 | I22: ='Forecast Cells'!P26 -> 19.08100819 | J22: ='Forecast Cells'!Q26 -> 19.1777789 | K22: ='Forecast Cells'!R26 -> 19.22314592 | L22: ='Forecast Cells'!S26 -> 19.25814452
B23: 4 | C23: ='Forecast Cells'!C27 -> Total Annual Energy Use - level 4 - Combo | D23: ='Forecast Cells'!K27 -> 0.3486869778 | E23: ='Forecast Cells'!L27 -> 0.3196090909 | F23: ='Forecast Cells'!M27 -> 0.3503987728 | G23: ='Forecast Cells'!N27 -> 0.3475239951 | H23: ='Forecast Cells'!O27 -> 0.3409726015 | I23: ='Forecast Cells'!P27 -> 0.3469274216 | J23: ='Forecast Cells'!Q27 -> 0.3486868891 | K23: ='Forecast Cells'!R27 -> 0.3495117441 | L23: ='Forecast Cells'!S27 -> 0.3501480821
B25: Retail Price (w/o tax) | H25: Percentile
D26: median | E26: min | F26: max | G26: average | H26: 0.05 | I26: 0.25 | J26: 0.5 | K26: 0.75 | L26: 0.95
B27: 0 | C27: ='Forecast Cells'!C8 -> Retail Price w/o Tax - level 0 - MWO | D27: ='Forecast Cells'!K8 -> 222.7408 | E27: ='Forecast Cells'!L8 -> 219.1355 | F27: ='Forecast Cells'!M8 -> 227.3386 | G27: ='Forecast Cells'!N8 -> 223.2699 | H27: ='Forecast Cells'!O8 -> 219.8347 | I27: ='Forecast Cells'!P8 -> 221.8187 | J27: ='Forecast Cells'!Q8 -> 222.7408 | K27: ='Forecast Cells'!R8 -> 225.0475 | L27: ='Forecast Cells'!S8 -> 227.3386
B28: 1 | C28: ='Forecast Cells'!C9 -> Retail Price w/o Tax - level 1 - MWO | D28: ='Forecast Cells'!K9 -> 223.1403 | E28: ='Forecast Cells'!L9 -> 219.5286 | F28: ='Forecast Cells'!M9 -> 227.7464 | G28: ='Forecast Cells'!N9 -> 223.6704 | H28: ='Forecast Cells'!O9 -> 220.2291 | I28: ='Forecast Cells'!P9 -> 222.2166 | J28: ='Forecast Cells'!Q9 -> 223.1403 | K28: ='Forecast Cells'!R9 -> 225.4512 | L28: ='Forecast Cells'!S9 -> 227.7464
B29: 2 | C29: ='Forecast Cells'!C10 -> Retail Price w/o Tax - level 2 - MWO | D29: ='Forecast Cells'!K10 -> 223.6331 | E29: ='Forecast Cells'!L10 -> 220.0134 | F29: ='Forecast Cells'!M10 -> 228.2494 | G29: ='Forecast Cells'!N10 -> 224.1644 | H29: ='Forecast Cells'!O10 -> 220.7155 | I29: ='Forecast Cells'!P10 -> 222.7074 | J29: ='Forecast Cells'!Q10 -> 223.6331 | K29: ='Forecast Cells'!R10 -> 225.9491 | L29: ='Forecast Cells'!S10 -> 228.2494
B30: 3 | C30: ='Forecast Cells'!C11 -> Retail Price w/o Tax - level 3 - MWO | D30: ='Forecast Cells'!K11 -> 224.6986 | E30: ='Forecast Cells'!L11 -> 221.0617 | F30: ='Forecast Cells'!M11 -> 229.3369 | G30: ='Forecast Cells'!N11 -> 225.2324 | H30: ='Forecast Cells'!O11 -> 221.7671 | I30: ='Forecast Cells'!P11 -> 223.7685 | J30: ='Forecast Cells'!Q11 -> 224.6986 | K30: ='Forecast Cells'!R11 -> 227.0257 | L30: ='Forecast Cells'!S11 -> 229.3369
B31: 4 | C31: ='Forecast Cells'!C12 -> Retail Price w/o Tax - level 4 - MWO | D31: ='Forecast Cells'!K12 -> 229.5734 | E31: ='Forecast Cells'!L12 -> 225.8575 | F31: ='Forecast Cells'!M12 -> 234.3122 | G31: ='Forecast Cells'!N12 -> 230.1187 | H31: ='Forecast Cells'!O12 -> 226.5782 | I31: ='Forecast Cells'!P12 -> 228.623 | J31: ='Forecast Cells'!Q12 -> 229.5734 | K31: ='Forecast Cells'!R12 -> 231.9509 | L31: ='Forecast Cells'!S12 -> 234.3122
B32: 0 | C32: ='Forecast Cells'!C13 -> Retail Price w/o Tax - level 0 - Combo | D32: ='Forecast Cells'!K13 -> 481.0239 | E32: ='Forecast Cells'!L13 -> 473.2381 | F32: ='Forecast Cells'!M13 -> 490.9532 | G32: ='Forecast Cells'!N13 -> 482.1665 | H32: ='Forecast Cells'!O13 -> 474.7481 | I32: ='Forecast Cells'!P13 -> 479.0326 | J32: ='Forecast Cells'!Q13 -> 481.0239 | K32: ='Forecast Cells'!R13 -> 486.0054 | L32: ='Forecast Cells'!S13 -> 490.9532
B33: 1 | C33: ='Forecast Cells'!C14 -> Retail Price w/o Tax - level 1 - Combo | D33: ='Forecast Cells'!K14 -> 481.0239 | E33: ='Forecast Cells'!L14 -> 473.2381 | F33: ='Forecast Cells'!M14 -> 490.9532 | G33: ='Forecast Cells'!N14 -> 482.1665 | H33: ='Forecast Cells'!O14 -> 474.7481 | I33: ='Forecast Cells'!P14 -> 479.0326 | J33: ='Forecast Cells'!Q14 -> 481.0239 | K33: ='Forecast Cells'!R14 -> 486.0054 | L33: ='Forecast Cells'!S14 -> 490.9532
B34: 2 | C34: ='Forecast Cells'!C15 -> Retail Price w/o Tax - level 2 - Combo | D34: ='Forecast Cells'!K15 -> 484.4448 | E34: ='Forecast Cells'!L15 -> 476.6037 | F34: ='Forecast Cells'!M15 -> 494.4447 | G34: ='Forecast Cells'!N15 -> 485.5956 | H34: ='Forecast Cells'!O15 -> 478.1244 | I34: ='Forecast Cells'!P15 -> 482.4394 | J34: ='Forecast Cells'!Q15 -> 484.4448 | K34: ='Forecast Cells'!R15 -> 489.4618 | L34: ='Forecast Cells'!S15 -> 494.4447
B35: 3 | C35: ='Forecast Cells'!C16 -> Retail Price w/o Tax - level 3 - Combo | D35: ='Forecast Cells'!K16 -> 495.1158 | E35: ='Forecast Cells'!L16 -> 487.1019 | F35: ='Forecast Cells'!M16 -> 505.336 | G35: ='Forecast Cells'!N16 -> 496.2919 | H35: ='Forecast Cells'!O16 -> 488.6562 | I35: ='Forecast Cells'!P16 -> 493.0663 | J35: ='Forecast Cells'!Q16 -> 495.1158 | K35: ='Forecast Cells'!R16 -> 500.2433 | L35: ='Forecast Cells'!S16 -> 505.336
B36: 4 | C36: ='Forecast Cells'!C17 -> Retail Price w/o Tax - level 4 - Combo | D36: ='Forecast Cells'!K17 -> 488.7646 | E36: ='Forecast Cells'!L17 -> 480.8535 | F36: ='Forecast Cells'!M17 -> 498.8537 | G36: ='Forecast Cells'!N17 -> 489.9256 | H36: ='Forecast Cells'!O17 -> 482.3878 | I36: ='Forecast Cells'!P17 -> 486.7413 | J36: ='Forecast Cells'!Q17 -> 488.7646 | K36: ='Forecast Cells'!R17 -> 493.8263 | L36: ='Forecast Cells'!S17 -> 498.8537
B38: Total Installed Price | H38: Percentile
D39: median | E39: min | F39: max | G39: average | H39: 0.05 | I39: 0.25 | J39: 0.5 | K39: 0.75 | L39: 0.95
B40: 0 | C40: ='Forecast Cells'!C28 -> Total Installed Price - level 0 - MWO | D40: ='Forecast Cells'!K28 -> 222.7408 | E40: ='Forecast Cells'!L28 -> 219.1355 | F40: ='Forecast Cells'!M28 -> 227.3386 | G40: ='Forecast Cells'!N28 -> 223.2699 | H40: ='Forecast Cells'!O28 -> 219.8347 | I40: ='Forecast Cells'!P28 -> 221.8187 | J40: ='Forecast Cells'!Q28 -> 222.7408 | K40: ='Forecast Cells'!R28 -> 225.0475 | L40: ='Forecast Cells'!S28 -> 227.3386
B41: 1 | C41: ='Forecast Cells'!C29 -> Total Installed Price - level 1 - MWO | D41: ='Forecast Cells'!K29 -> 223.1403 | E41: ='Forecast Cells'!L29 -> 219.5286 | F41: ='Forecast Cells'!M29 -> 227.7464 | G41: ='Forecast Cells'!N29 -> 223.6704 | H41: ='Forecast Cells'!O29 -> 220.2291 | I41: ='Forecast Cells'!P29 -> 222.2166 | J41: ='Forecast Cells'!Q29 -> 223.1403 | K41: ='Forecast Cells'!R29 -> 225.4512 | L41: ='Forecast Cells'!S29 -> 227.7464
B42: 2 | C42: ='Forecast Cells'!C30 -> Total Installed Price - level 2 - MWO | D42: ='Forecast Cells'!K30 -> 223.6331 | E42: ='Forecast Cells'!L30 -> 220.0134 | F42: ='Forecast Cells'!M30 -> 228.2494 | G42: ='Forecast Cells'!N30 -> 224.1644 | H42: ='Forecast Cells'!O30 -> 220.7155 | I42: ='Forecast Cells'!P30 -> 222.7074 | J42: ='Forecast Cells'!Q30 -> 223.6331 | K42: ='Forecast Cells'!R30 -> 225.9491 | L42: ='Forecast Cells'!S30 -> 228.2494
B43: 3 | C43: ='Forecast Cells'!C31 -> Total Installed Price - level 3 - MWO | D43: ='Forecast Cells'!K31 -> 224.6986 | E43: ='Forecast Cells'!L31 -> 221.0617 | F43: ='Forecast Cells'!M31 -> 229.3369 | G43: ='Forecast Cells'!N31 -> 225.2324 | H43: ='Forecast Cells'!O31 -> 221.7671 | I43: ='Forecast Cells'!P31 -> 223.7685 | J43: ='Forecast Cells'!Q31 -> 224.6986 | K43: ='Forecast Cells'!R31 -> 227.0257 | L43: ='Forecast Cells'!S31 -> 229.3369
B44: 4 | C44: ='Forecast Cells'!C32 -> Total Installed Price - level 4 - MWO | D44: ='Forecast Cells'!K32 -> 229.5734 | E44: ='Forecast Cells'!L32 -> 225.8575 | F44: ='Forecast Cells'!M32 -> 234.3122 | G44: ='Forecast Cells'!N32 -> 230.1187 | H44: ='Forecast Cells'!O32 -> 226.5782 | I44: ='Forecast Cells'!P32 -> 228.623 | J44: ='Forecast Cells'!Q32 -> 229.5734 | K44: ='Forecast Cells'!R32 -> 231.9509 | L44: ='Forecast Cells'!S32 -> 234.3122
B45: 0 | C45: ='Forecast Cells'!C33 -> Total Installed Price - level 0 - Combo | D45: ='Forecast Cells'!K33 -> 481.0239 | E45: ='Forecast Cells'!L33 -> 473.2381 | F45: ='Forecast Cells'!M33 -> 490.9532 | G45: ='Forecast Cells'!N33 -> 482.1665 | H45: ='Forecast Cells'!O33 -> 474.7481 | I45: ='Forecast Cells'!P33 -> 479.0326 | J45: ='Forecast Cells'!Q33 -> 481.0239 | K45: ='Forecast Cells'!R33 -> 486.0054 | L45: ='Forecast Cells'!S33 -> 490.9532
B46: 1 | C46: ='Forecast Cells'!C34 -> Total Installed Price - level 1 - Combo | D46: ='Forecast Cells'!K34 -> 481.0239 | E46: ='Forecast Cells'!L34 -> 473.2381 | F46: ='Forecast Cells'!M34 -> 490.9532 | G46: ='Forecast Cells'!N34 -> 482.1665 | H46: ='Forecast Cells'!O34 -> 474.7481 | I46: ='Forecast Cells'!P34 -> 479.0326 | J46: ='Forecast Cells'!Q34 -> 481.0239 | K46: ='Forecast Cells'!R34 -> 486.0054 | L46: ='Forecast Cells'!S34 -> 490.9532
B47: 2 | C47: ='Forecast Cells'!C35 -> Total Installed Price - level 2 - Combo | D47: ='Forecast Cells'!K35 -> 484.4448 | E47: ='Forecast Cells'!L35 -> 476.6037 | F47: ='Forecast Cells'!M35 -> 494.4447 | G47: ='Forecast Cells'!N35 -> 485.5956 | H47: ='Forecast Cells'!O35 -> 478.1244 | I47: ='Forecast Cells'!P35 -> 482.4394 | J47: ='Forecast Cells'!Q35 -> 484.4448 | K47: ='Forecast Cells'!R35 -> 489.4618 | L47: ='Forecast Cells'!S35 -> 494.4447
B48: 3 | C48: ='Forecast Cells'!C36 -> Total Installed Price - level 3 - Combo | D48: ='Forecast Cells'!K36 -> 495.1158 | E48: ='Forecast Cells'!L36 -> 487.1019 | F48: ='Forecast Cells'!M36 -> 505.336 | G48: ='Forecast Cells'!N36 -> 496.2919 | H48: ='Forecast Cells'!O36 -> 488.6562 | I48: ='Forecast Cells'!P36 -> 493.0663 | J48: ='Forecast Cells'!Q36 -> 495.1158 | K48: ='Forecast Cells'!R36 -> 500.2433 | L48: ='Forecast Cells'!S36 -> 505.336
B49: 4 | C49: ='Forecast Cells'!C37 -> Total Installed Price - level 4 - Combo | D49: ='Forecast Cells'!K37 -> 488.7646 | E49: ='Forecast Cells'!L37 -> 480.8535 | F49: ='Forecast Cells'!M37 -> 498.8537 | G49: ='Forecast Cells'!N37 -> 489.9256 | H49: ='Forecast Cells'!O37 -> 482.3878 | I49: ='Forecast Cells'!P37 -> 486.7413 | J49: ='Forecast Cells'!Q37 -> 488.7646 | K49: ='Forecast Cells'!R37 -> 493.8263 | L49: ='Forecast Cells'!S37 -> 498.8537
B51: Total Operating Cost (sum over lifetime discounted) | H51: Percentile
D52: median | E52: min | F52: max | G52: average | H52: 0.05 | I52: 0.25 | J52: 0.5 | K52: 0.75 | L52: 0.95
B53: 0 | C53: ='Forecast Cells'!C64 -> Total Oper. Cost - level 0 - MWO | D53: ='Forecast Cells'!K64 -> 29.56829963 | E53: ='Forecast Cells'!L64 -> 12.47302237 | F53: ='Forecast Cells'!M64 -> 67.37225786 | G53: ='Forecast Cells'!N64 -> 30.97399171 | H53: ='Forecast Cells'!O64 -> 19.09948352 | I53: ='Forecast Cells'!P64 -> 24.96030608 | J53: ='Forecast Cells'!Q64 -> 29.56811756 | K53: ='Forecast Cells'!R64 -> 35.11483796 | L53: ='Forecast Cells'!S64 -> 48.48367448
B54: 1 | C54: ='Forecast Cells'!C65 -> Total Oper. Cost - level 1 - MWO | D54: ='Forecast Cells'!K65 -> 14.78414981 | E54: ='Forecast Cells'!L65 -> 6.236511187 | F54: ='Forecast Cells'!M65 -> 33.68612893 | G54: ='Forecast Cells'!N65 -> 15.48699585 | H54: ='Forecast Cells'!O65 -> 9.549741758 | I54: ='Forecast Cells'!P65 -> 12.48015304 | J54: ='Forecast Cells'!Q65 -> 14.78405878 | K54: ='Forecast Cells'!R65 -> 17.55741898 | L54: ='Forecast Cells'!S65 -> 24.24183724
B55: 2 | C55: ='Forecast Cells'!C66 -> Total Oper. Cost - level 2 - MWO | D55: ='Forecast Cells'!K66 -> 11.08811236 | E55: ='Forecast Cells'!L66 -> 4.67738339 | F55: ='Forecast Cells'!M66 -> 25.2645967 | G55: ='Forecast Cells'!N66 -> 11.61524689 | H55: ='Forecast Cells'!O66 -> 7.162306319 | I55: ='Forecast Cells'!P66 -> 9.360114779 | J55: ='Forecast Cells'!Q66 -> 11.08804409 | K55: ='Forecast Cells'!R66 -> 13.16806423 | L55: ='Forecast Cells'!S66 -> 18.18137793
B56: 3 | C56: ='Forecast Cells'!C67 -> Total Oper. Cost - level 3 - MWO | D56: ='Forecast Cells'!K67 -> 7.392074907 | E56: ='Forecast Cells'!L67 -> 3.118255594 | F56: ='Forecast Cells'!M67 -> 16.84306446 | G56: ='Forecast Cells'!N67 -> 7.743497927 | H56: ='Forecast Cells'!O67 -> 4.774870879 | I56: ='Forecast Cells'!P67 -> 6.240076519 | J56: ='Forecast Cells'!Q67 -> 7.39202939 | K56: ='Forecast Cells'!R67 -> 8.778709489 | L56: ='Forecast Cells'!S67 -> 12.12091862
B57: 4 | C57: ='Forecast Cells'!C68 -> Total Oper. Cost - level 4 - MWO | D57: ='Forecast Cells'!K68 -> 0.1478414981 | E57: ='Forecast Cells'!L68 -> 0.06236511187 | F57: ='Forecast Cells'!M68 -> 0.3368612893 | G57: ='Forecast Cells'!N68 -> 0.1548699585 | H57: ='Forecast Cells'!O68 -> 0.09549741758 | I57: ='Forecast Cells'!P68 -> 0.1248015304 | J57: ='Forecast Cells'!Q68 -> 0.1478405878 | K57: ='Forecast Cells'!R68 -> 0.1755741898 | L57: ='Forecast Cells'!S68 -> 0.2424183724
B58: 0 | C58: ='Forecast Cells'!C69 -> Total Oper. Cost - level 0 - Combo | D58: ='Forecast Cells'!K69 -> 33.26433708 | E58: ='Forecast Cells'!L69 -> 14.03215017 | F58: ='Forecast Cells'!M69 -> 75.79379009 | G58: ='Forecast Cells'!N69 -> 34.84574067 | H58: ='Forecast Cells'!O69 -> 21.48691896 | I58: ='Forecast Cells'!P69 -> 28.08034434 | J58: ='Forecast Cells'!Q69 -> 33.26413226 | K58: ='Forecast Cells'!R69 -> 39.5041927 | L58: ='Forecast Cells'!S69 -> 54.54413379
B59: 1 | C59: ='Forecast Cells'!C70 -> Total Oper. Cost - level 1 - Combo | D59: ='Forecast Cells'!K70 -> 27.35067716 | E59: ='Forecast Cells'!L70 -> 11.5375457 | F59: ='Forecast Cells'!M70 -> 62.31933852 | G59: ='Forecast Cells'!N70 -> 28.65094233 | H59: ='Forecast Cells'!O70 -> 17.66702225 | I59: ='Forecast Cells'!P70 -> 23.08828312 | J59: ='Forecast Cells'!Q70 -> 27.35050874 | K59: ='Forecast Cells'!R70 -> 32.48122511 | L59: ='Forecast Cells'!S70 -> 44.84739889
B60: 2 | C60: ='Forecast Cells'!C71 -> Total Oper. Cost - level 2 - Combo | D60: ='Forecast Cells'!K71 -> 19.95860225 | E60: ='Forecast Cells'!L71 -> 8.419290103 | F60: ='Forecast Cells'!M71 -> 45.47627405 | G60: ='Forecast Cells'!N71 -> 20.9074444 | H60: ='Forecast Cells'!O71 -> 12.89215137 | I60: ='Forecast Cells'!P71 -> 16.8482066 | J60: ='Forecast Cells'!Q71 -> 19.95847935 | K60: ='Forecast Cells'!R71 -> 23.70251562 | L60: ='Forecast Cells'!S71 -> 32.72648027
B61: 3 | C61: ='Forecast Cells'!C72 -> Total Oper. Cost - level 3 - Combo | D61: ='Forecast Cells'!K72 -> 16.2625648 | E61: ='Forecast Cells'!L72 -> 6.860162306 | F61: ='Forecast Cells'!M72 -> 37.05474182 | G61: ='Forecast Cells'!N72 -> 17.03569544 | H61: ='Forecast Cells'!O72 -> 10.50471593 | I61: ='Forecast Cells'!P72 -> 13.72816834 | J61: ='Forecast Cells'!Q72 -> 16.26246466 | K61: ='Forecast Cells'!R72 -> 19.31316088 | L61: ='Forecast Cells'!S72 -> 26.66602096
B62: 4 | C62: ='Forecast Cells'!C73 -> Total Oper. Cost - level 4 - Combo | D62: ='Forecast Cells'!K73 -> 0.2956829963 | E62: ='Forecast Cells'!L73 -> 0.1247302237 | F62: ='Forecast Cells'!M73 -> 0.6737225786 | G62: ='Forecast Cells'!N73 -> 0.3097399171 | H62: ='Forecast Cells'!O73 -> 0.1909948352 | I62: ='Forecast Cells'!P73 -> 0.2496030608 | J62: ='Forecast Cells'!Q73 -> 0.2956811756 | K62: ='Forecast Cells'!R73 -> 0.3511483796 | L62: ='Forecast Cells'!S73 -> 0.4848367448
B64: LCC Savings | H64: Percentile
D65: median | E65: min | F65: max | G65: average | H65: 0.05 | I65: 0.25 | J65: 0.5 | K65: 0.75 | L65: 0.95
B66: 1 | C66: ='Forecast Cells'!C48 -> LCC Savings- level 1 - MWO | D66: ='Forecast Cells'!K48 -> 0 | E66: ='Forecast Cells'!L48 -> 0 | F66: ='Forecast Cells'!M48 -> 32.8384 | G66: ='Forecast Cells'!N48 -> 6.9583 | H66: ='Forecast Cells'!O48 -> 0 | I66: ='Forecast Cells'!P48 -> 0 | J66: ='Forecast Cells'!Q48 -> 0 | K66: ='Forecast Cells'!R48 -> 14.0527 | L66: ='Forecast Cells'!S48 -> 20.8349
B67: 2 | C67: ='Forecast Cells'!C49 -> LCC Savings- level 2 - MWO | D67: ='Forecast Cells'!K49 -> 4.9032 | E67: ='Forecast Cells'!L49 -> 0 | F67: ='Forecast Cells'!M49 -> 40.6495 | G67: ='Forecast Cells'!N49 -> 9.705 | H67: ='Forecast Cells'!O49 -> 0 | I67: ='Forecast Cells'!P49 -> 2.4258 | J67: ='Forecast Cells'!Q49 -> 4.9031 | K67: ='Forecast Cells'!R49 -> 17.1687 | L67: ='Forecast Cells'!S49 -> 25.647
B68: 3 | C68: ='Forecast Cells'!C50 -> LCC Savings- level 3 - MWO | D68: ='Forecast Cells'!K50 -> 9.1505 | E68: ='Forecast Cells'!L50 -> 0.5953 | F68: ='Forecast Cells'!M50 -> 47.8799 | G68: ='Forecast Cells'!N50 -> 12.5087 | H68: ='Forecast Cells'!O50 -> 2.0943 | I68: ='Forecast Cells'!P50 -> 4.5395 | J68: ='Forecast Cells'!Q50 -> 9.1494 | K68: ='Forecast Cells'!R50 -> 19.7124 | L68: ='Forecast Cells'!S50 -> 29.8813
B69: 4 | C69: ='Forecast Cells'!C51 -> LCC Savings- level 4 - MWO | D69: ='Forecast Cells'!K51 -> 12.7394 | E69: ='Forecast Cells'!L51 -> -1.0626 | F69: ='Forecast Cells'!M51 -> 59.2258 | G69: ='Forecast Cells'!N51 -> 15.211 | H69: ='Forecast Cells'!O51 -> 2.7952 | I69: ='Forecast Cells'!P51 -> 6.6667 | J69: ='Forecast Cells'!Q51 -> 12.739 | K69: ='Forecast Cells'!R51 -> 22.023 | L69: ='Forecast Cells'!S51 -> 35.3392
B70: 1 | C70: ='Forecast Cells'!C52 -> LCC Savings- level 1 - Combo | D70: ='Forecast Cells'!K52 -> 5.9137 | E70: ='Forecast Cells'!L52 -> 2.4946 | F70: ='Forecast Cells'!M52 -> 13.4745 | G70: ='Forecast Cells'!N52 -> 6.1948 | H70: ='Forecast Cells'!O52 -> 3.8199 | I70: ='Forecast Cells'!P52 -> 4.9921 | J70: ='Forecast Cells'!Q52 -> 5.9136 | K70: ='Forecast Cells'!R52 -> 7.023 | L70: ='Forecast Cells'!S52 -> 9.6967
B71: 2 | C71: ='Forecast Cells'!C53 -> LCC Savings- level 2 - Combo | D71: ='Forecast Cells'!K53 -> 9.8862 | E71: ='Forecast Cells'!L53 -> 2.1946 | F71: ='Forecast Cells'!M53 -> 26.8483 | G71: ='Forecast Cells'!N53 -> 10.5092 | H71: ='Forecast Cells'!O53 -> 5.1742 | I71: ='Forecast Cells'!P53 -> 7.8149 | J71: ='Forecast Cells'!Q53 -> 9.8855 | K71: ='Forecast Cells'!R53 -> 12.3676 | L71: ='Forecast Cells'!S53 -> 18.3594
B72: 3 | C72: ='Forecast Cells'!C54 -> LCC Savings- level 3 - Combo | D72: ='Forecast Cells'!K54 -> 2.9184 | E72: ='Forecast Cells'!L54 -> -7.0026 | F72: ='Forecast Cells'!M54 -> 24.4484 | G72: ='Forecast Cells'!N54 -> 3.6846 | H72: ='Forecast Cells'!O54 -> -3.1075 | I72: ='Forecast Cells'!P54 -> 0.2328 | J72: ='Forecast Cells'!Q54 -> 2.9181 | K72: ='Forecast Cells'!R54 -> 6.0316 | L72: ='Forecast Cells'!S54 -> 13.6897
B73: 4 | C73: ='Forecast Cells'!C55 -> LCC Savings- level 4 - Combo | D73: ='Forecast Cells'!K55 -> 25.2317 | E73: ='Forecast Cells'!L55 -> 6.1728 | F73: ='Forecast Cells'!M55 -> 67.2702 | G73: ='Forecast Cells'!N55 -> 26.7769 | H73: ='Forecast Cells'!O55 -> 13.5521 | I73: ='Forecast Cells'!P55 -> 20.0962 | J73: ='Forecast Cells'!Q55 -> 25.2307 | K73: ='Forecast Cells'!R55 -> 31.3785 | L73: ='Forecast Cells'!S55 -> 46.2365
B75: Payback Periods | H75: Percentile
D76: median | E76: min | F76: max | G76: average | H76: 0.05 | I76: 0.25 | J76: 0.5 | K76: 0.75 | L76: 0.95
B77: 1 | C77: ='Forecast Cells'!C56 -> Payback Period - level 1 - MWO | D77: ='Forecast Cells'!K56 -> 0.2074480787 | E77: ='Forecast Cells'!L56 -> 0.1261822648 | F77: ='Forecast Cells'!M56 -> 0.2930391754 | G77: ='Forecast Cells'!N56 -> 0.1992555772 | H77: ='Forecast Cells'!O56 -> 0.1279035835 | I77: ='Forecast Cells'!P56 -> 0.1685833836 | J77: ='Forecast Cells'!Q56 -> 0.2074450756 | K77: ='Forecast Cells'!R56 -> 0.2183012699 | L77: ='Forecast Cells'!S56 -> 0.2510849836
B78: 2 | C78: ='Forecast Cells'!C57 -> Payback Period - level 2 - MWO | D78: ='Forecast Cells'!K57 -> 0.4411799342 | E78: ='Forecast Cells'!L57 -> 0.2254456465 | F78: ='Forecast Cells'!M57 -> 1.451497435 | G78: ='Forecast Cells'!N57 -> 0.627114659 | H78: ='Forecast Cells'!O57 -> 0.2304971583 | I78: ='Forecast Cells'!P57 -> 0.3694368529 | J78: ='Forecast Cells'!Q57 -> 0.4411788129 | K78: ='Forecast Cells'!R57 -> 1.019247632 | L78: ='Forecast Cells'!S57 -> 1.218121821
B79: 3 | C79: ='Forecast Cells'!C58 -> Payback Period - level 3 - MWO | D79: ='Forecast Cells'!K58 -> 1.148212427 | E79: ='Forecast Cells'!L58 -> 0.4121953985 | F79: ='Forecast Cells'!M58 -> 3.099775716 | G79: ='Forecast Cells'!N58 -> 1.241207011 | H79: ='Forecast Cells'!O58 -> 0.4809698674 | I79: ='Forecast Cells'!P58 -> 0.6801376675 | J79: ='Forecast Cells'!Q58 -> 1.148165837 | K79: ='Forecast Cells'!R58 -> 1.695645305 | L79: ='Forecast Cells'!S58 -> 2.323481985
B80: 4 | C80: ='Forecast Cells'!C59 -> Payback Period - level 4 - MWO | D80: ='Forecast Cells'!K59 -> 2.406196977 | E80: ='Forecast Cells'!L59 -> 1.084279763 | F80: ='Forecast Cells'!M59 -> 5.838260005 | G80: ='Forecast Cells'!N59 -> 2.67312708 | H80: ='Forecast Cells'!O59 -> 1.265190965 | I80: ='Forecast Cells'!P59 -> 1.789101751 | J80: ='Forecast Cells'!Q59 -> 2.406163131 | K80: ='Forecast Cells'!R59 -> 3.527780204 | L80: ='Forecast Cells'!S59 -> 4.447936815
B81: 1 | C81: ='Forecast Cells'!C60 -> Payback Period - level 1 - Combo | D81: ='Forecast Cells'!K60 -> 0 | E81: ='Forecast Cells'!L60 -> 0 | F81: ='Forecast Cells'!M60 -> 0 | G81: ='Forecast Cells'!N60 -> 0 | H81: ='Forecast Cells'!O60 -> 0 | I81: ='Forecast Cells'!P60 -> 0 | J81: ='Forecast Cells'!Q60 -> 0 | K81: ='Forecast Cells'!R60 -> 0 | L81: ='Forecast Cells'!S60 -> 0
B82: 2 | C82: ='Forecast Cells'!C61 -> Payback Period - level 2 - Combo | D82: ='Forecast Cells'!K61 -> 1.974131108 | E82: ='Forecast Cells'!L61 -> 1.200267567 | F82: ='Forecast Cells'!M61 -> 2.798921748 | G82: ='Forecast Cells'!N61 -> 1.895074021 | H82: ='Forecast Cells'!O61 -> 1.215355428 | I82: ='Forecast Cells'!P61 -> 1.603941856 | J82: ='Forecast Cells'!Q61 -> 1.974129647 | K82: ='Forecast Cells'!R61 -> 2.075604604 | L82: ='Forecast Cells'!S61 -> 2.385929422
B83: 3 | C83: ='Forecast Cells'!C62 -> Payback Period - level 3 - Combo | D83: ='Forecast Cells'!K62 -> 6.364207783 | E83: ='Forecast Cells'!L62 -> 3.869424964 | F83: ='Forecast Cells'!M62 -> 9.023169485 | G83: ='Forecast Cells'!N62 -> 6.109343389 | H83: ='Forecast Cells'!O62 -> 3.91806524 | I83: ='Forecast Cells'!P62 -> 5.17079094 | J83: ='Forecast Cells'!Q62 -> 6.364203075 | K83: ='Forecast Cells'!R62 -> 6.691338242 | L83: ='Forecast Cells'!S62 -> 7.691764004
B84: 4 | C84: ='Forecast Cells'!C63 -> Payback Period - level 4 - Combo | D84: ='Forecast Cells'!K63 -> 1.802802121 | E84: ='Forecast Cells'!L63 -> 1.096099903 | F84: ='Forecast Cells'!M63 -> 2.556011627 | G84: ='Forecast Cells'!N63 -> 1.730606165 | H84: ='Forecast Cells'!O63 -> 1.109878333 | I84: ='Forecast Cells'!P63 -> 1.464740498 | J84: ='Forecast Cells'!Q63 -> 1.802800788 | K84: ='Forecast Cells'!R63 -> 1.895469034 | L84: ='Forecast Cells'!S63 -> 2.17886168

Sheet Summary
B1: Simulation Summary
F3: ="Simulation Results - " & nTrials & " samples" -> Simulation Results - 10000 samples | H3: All dollar values are in 2010$
B4: User Input: | F4: ='Base Case Eff Dist'!E4 -> Microwave Oven - Only (CT and OTR), Microwave Combination Oven (CT)
H5: LCC Results | O5: Payback Results
B6: Energy Price Trend | H6: Installed | I6: Lifetime | K6: LCC | L6: Net | M6: No | N6: Net
F7: Level | G7: Description | H7: Price | I7: Oper. Cost* | J7: LCC | K7: Savings | L7: Cost | M7: Impact | N7: Benefit | O7: Median
B8: Start Year | F8: 0 | G8: =INDEX(EffDist1,F8+1) -> Baseline | H8: ='Forecast Cells'!N28 -> 223.2699 | I8: ='Forecast Cells'!N64 -> 30.97399171 | J8: ='Forecast Cells'!N38 -> 254.2439
F9: 1 | G9: =INDEX(EffDist1,F9+1) -> TSL1 | H9: ='Forecast Cells'!N29 -> 223.6704 | I9: ='Forecast Cells'!N65 -> 15.48699585 | J9: ='Forecast Cells'!N39 -> 239.1574 | K9: ='Forecast Cells'!N48 -> 6.9583 | L9: ='Forecast Cells'!T74 -> 0 | M9: ='Forecast Cells'!T82 -> 0.5371 | N9: ='Forecast Cells'!T90 -> 0.4629 | O9: ='Forecast Cells'!K56 -> 0.2074480787
B10: # of Trials | F10: 2 | G10: =INDEX(EffDist1,F10+1) -> TSL2 | H10: ='Forecast Cells'!N30 -> 224.1644 | I10: ='Forecast Cells'!N66 -> 11.61524689 | J10: ='Forecast Cells'!N40 -> 235.7796 | K10: ='Forecast Cells'!N49 -> 9.705 | L10: ='Forecast Cells'!T75 -> 0 | M10: ='Forecast Cells'!T83 -> 0.1852 | N10: ='Forecast Cells'!T91 -> 0.8148 | O10: ='Forecast Cells'!K57 -> 0.4411799342
F11: 3 | G11: =INDEX(EffDist1,F11+1) -> TSL3 | H11: ='Forecast Cells'!N31 -> 225.2324 | I11: ='Forecast Cells'!N67 -> 7.743497927 | J11: ='Forecast Cells'!N41 -> 232.9759 | K11: ='Forecast Cells'!N50 -> 12.5087 | L11: ='Forecast Cells'!T76 -> 0 | M11: ='Forecast Cells'!T84 -> 0 | N11: ='Forecast Cells'!T92 -> 1 | O11: ='Forecast Cells'!K58 -> 1.148212427
B12: Analysis Group | F12: 4 | G12: =INDEX(EffDist1,F12+1) -> TSL4 | H12: ='Forecast Cells'!N32 -> 230.1187 | I12: ='Forecast Cells'!N68 -> 0.1548699585 | J12: ='Forecast Cells'!N42 -> 230.2736 | K12: ='Forecast Cells'!N51 -> 15.211 | L12: ='Forecast Cells'!T77 -> 0.0016 | M12: ='Forecast Cells'!T85 -> 0 | N12: ='Forecast Cells'!T93 -> 0.9984 | O12: ='Forecast Cells'!K59 -> 2.406196977
B14: Price Trend | C14: 1 | D14: 1=yes, 0=no | F14: ='Base Case Eff Dist'!E15 -> Microwave Combination Oven (OTR)
H15: LCC Results | O15: Payback Results
H16: Installed | I16: Lifetime | K16: LCC | L16: Net | M16: No | N16: Net
F17: Level | G17: Description | H17: Price | I17: Oper. Cost* | J17: LCC | K17: Savings | L17: Cost | M17: Impact | N17: Benefit | O17: Median
F18: 0 | G18: =INDEX(labelEffLvl2, F18+1) -> Baseline | H18: ='Forecast Cells'!N33 -> 482.1665 | I18: ='Forecast Cells'!N69 -> 34.84574067 | J18: ='Forecast Cells'!N43 -> 517.0123
F19: 1 | G19: =INDEX(labelEffLvl2, F19+1) -> TSL1 | H19: ='Forecast Cells'!N34 -> 482.1665 | I19: ='Forecast Cells'!N70 -> 28.65094233 | J19: ='Forecast Cells'!N44 -> 510.8175 | K19: ='Forecast Cells'!N52 -> 6.1948 | L19: ='Forecast Cells'!T78 -> 0 | M19: ='Forecast Cells'!T86 -> 0 | N19: ='Forecast Cells'!T94 -> 1 | O19: ='Forecast Cells'!K60 -> 0
F20: 2 | G20: =INDEX(labelEffLvl2, F20+1) -> TSL2 | H20: ='Forecast Cells'!N35 -> 485.5956 | I20: ='Forecast Cells'!N71 -> 20.9074444 | J20: ='Forecast Cells'!N45 -> 506.503 | K20: ='Forecast Cells'!N53 -> 10.5092 | L20: ='Forecast Cells'!T79 -> 0 | M20: ='Forecast Cells'!T87 -> 0 | N20: ='Forecast Cells'!T95 -> 1 | O20: ='Forecast Cells'!K61 -> 1.974131108
F21: 3 | G21: =INDEX(labelEffLvl2, F21+1) -> TSL3 | H21: ='Forecast Cells'!N36 -> 496.2919 | I21: ='Forecast Cells'!N72 -> 17.03569544 | J21: ='Forecast Cells'!N46 -> 513.3276 | K21: ='Forecast Cells'!N54 -> 3.6846 | L21: ='Forecast Cells'!T80 -> 0.2304 | M21: ='Forecast Cells'!T88 -> 0 | N21: ='Forecast Cells'!T96 -> 0.7696 | O21: ='Forecast Cells'!K62 -> 6.364207783
F22: 4 | G22: =INDEX(labelEffLvl2, F22+1) -> TSL4 | H22: ='Forecast Cells'!N37 -> 489.9256 | I22: ='Forecast Cells'!N73 -> 0.3097399171 | J22: ='Forecast Cells'!N47 -> 490.2354 | K22: ='Forecast Cells'!N55 -> 26.7769 | L22: ='Forecast Cells'!T81 -> 0 | M22: ='Forecast Cells'!T89 -> 0 | N22: ='Forecast Cells'!T97 -> 1 | O22: ='Forecast Cells'!K63 -> 1.802802121

Sheet Rebuttable PBP
B1: Rebuttable PBP
B4: ='Base Case Eff Dist'!E4 -> Microwave Oven - Only (CT and OTR), Microwave Combination Oven (CT)
E5: Cost Data | K5: Energy Use Data | L5: Summary Economics
E6: Manufacturer Costs (per unit) from Engineering Analysis | H6: Consumer Costs from the LCC Analysis | L6: Total Costs
E7: Manufacturer Production Cost (MPC)* | F7: Total Manufacturer Selling Price (MSP)** | G7: Incremental MSP | H7: Retail | I7: Installation | J7: Maintenance | K7: Electricity | L7: Total Installed | M7: Total Operating | N7: Simple Payback
B8: Level | C8: Standby | D8: Description
C9: W | E9: 2010$ | F9: 2010$ | G9: 2010$ | H9: 2010$ | I9: 2010$ | J9: 2010$ | K9: kWh/year | L9: $ | M9: $/year | N9: years
B10: 0 | C10: ='Base Case Eff Dist'!G6 -> 4 | D10: =INDEX(EffDist1,B10+1) -> Baseline | E10: ='Equipment Cost'!K6 -> 114.0015796 | F10: =E10*MfgMarkup -> 143.6419903 | G10: - | H10: =F10*'Equipment Cost'!$P$23*(1+'Equipment Cost'!$P$17) -> 223.232543 | I10: 0 | J10: 0 | K10: =(8760-71)*(C10/1000) -> 34.756 | L10: =SUM(H10:I10) -> 223.232543 | M10: =J10+(K10*Statistics!$G$9) -> 4.2784636
B11: 1 | C11: ='Base Case Eff Dist'!G7 -> 2 | D11: =INDEX(EffDist1,B11+1) -> TSL1 | E11: ='Equipment Cost'!K7 -> 114.2550244 | F11: =E11*MfgMarkup -> 143.9613307 | G11: =F11-$F$10 -> 0.3193403941 | H11: =$H$10+G11*'Equipment Cost'!$Q$23*(1+'Equipment Cost'!$P$17) -> 223.6329926 | I11: 0 | J11: 0 | K11: =(8760-71)*(C11/1000) -> 17.378 | L11: =SUM(H11:I11) -> 223.6329926 | M11: =J11+(K11*Statistics!$G$9) -> 2.1392318 | N11: =(L11-$L$10) / ($M$10-M11) -> 0.1871931546
B12: 2 | C12: ='Base Case Eff Dist'!G8 -> 1.5 | D12: =INDEX(EffDist1,B12+1) -> TSL2 | E12: ='Equipment Cost'!K8 -> 114.5676062 | F12: =E12*MfgMarkup -> 144.3551838 | G12: =F12-$F$10 -> 0.7131935468 | H12: =$H$10+G12*'Equipment Cost'!$Q$23*(1+'Equipment Cost'!$P$17) -> 224.1268804 | I12: 0 | J12: 0 | K12: 13.0335 | L12: 224.1268804 | M12: =J12+(K12*Statistics!$G$9) -> 1.60442385 | N12: =(L12-$L$10) / ($M$10-M12) -> 0.3344517696
B13: 3 | C13: ='Base Case Eff Dist'!G9 -> 1 | D13: =INDEX(EffDist1,B13+1) -> TSL3 | E13: ='Equipment Cost'!K9 -> 115.2434589 | F13: =E13*MfgMarkup -> 145.2067582 | G13: 1.564767931 | H13: =$H$10+G13*'Equipment Cost'!$Q$23*(1+'Equipment Cost'!$P$17) -> 225.1947458 | I13: 0 | J13: 0 | K13: 8.689 | L13: 225.1947458 | M13: =J13+(K13*Statistics!$G$9) -> 1.0696159 | N13: 0.6114976385
B14: 4 | C14: ='Base Case Eff Dist'!G10 -> 0.02 | D14: =INDEX(EffDist1,B14+1) -> TSL4 | E14: ='Equipment Cost'!K10 -> 118.335485 | F14: =E14*MfgMarkup -> 149.102711 | G14: 5.460720739 | H14: =$H$10+G14*'Equipment Cost'!$Q$23*(1+'Equipment Cost'!$P$17) -> 230.0802303 | I14: 0 | J14: 0 | K14: 0.17378 | L14: 230.0802303 | M14: =J14+(K14*Statistics!$G$9) -> 0.021392318 | N14: 1.608544193
B16: ='Base Case Eff Dist'!E15 -> Microwave Combination Oven (OTR)
E17: Cost Data | K17: Energy Use Data | L17: Summary Economics
E18: Manufacturer Costs (per unit) from Engineering Analysis | H18: Consumer Costs from the LCC Analysis | L18: Total Costs
E19: Manufacturer Production Cost (MPC)* | F19: Total Manufacturer Selling Price (MSP)** | G19: Incremental MSP | H19: Retail | I19: Installation | J19: Maintenance | K19: Electricity | L19: Total Installed | M19: Total Operating | N19: Simple Payback
B20: Level | C20: Standby | D20: Description
C21: W | E21: 2010$ | F21: 2010$ | G21: 2010$ | H21: 2010$ | I21: 2010$ | J21: 2010$ | K21: kWh/year | L21: $ | M21: $/year | N21: years
B22: 0 | C22: ='Base Case Eff Dist'!G17 -> 4.5 | D22: =INDEX(EffDist1,B22+1) -> Baseline | E22: ='Equipment Cost'!K15 -> 246.1941762 | F22: =E22*MfgMarkup -> 310.204662 | G22: - | H22: =F22*'Equipment Cost'!$P$23*(1+'Equipment Cost'!$P$17) -> 482.0858819 | I22: 0 | J22: 0 | K22: =(8760-71)*(C22/1000) -> 39.1005 | L22: =SUM(H22:I22) -> 482.0858819 | M22: =J22+(K22*Statistics!$G$9) -> 4.81327155
B23: 1 | C23: ='Base Case Eff Dist'!G18 -> 3.7 | D23: =INDEX(EffDist1,B23+1) -> TSL1 | E23: ='Equipment Cost'!K16 -> 246.1941762 | F23: =E23*MfgMarkup -> 310.204662 | G23: =F23-$F$22 -> 0 | H23: =$H$22+G23*'Equipment Cost'!$Q$23*(1+'Equipment Cost'!$P$17) -> 482.0858819 | I23: 0 | J23: 0 | K23: =(8760-71)*(C23/1000) -> 32.1493 | L23: 482.0858819 | M23: =J23+(K23*Statistics!$G$9) -> 3.95757883 | N23: =(L23-$L$22) / ($M$22-M23) -> 0
B24: 2 | C24: ='Base Case Eff Dist'!G19 -> 2.7 | D24: =INDEX(EffDist1,B24+1) -> TSL2 | E24: ='Equipment Cost'!K17 -> 248.3640814 | F24: =E24*MfgMarkup -> 312.9387426 | G24: =F24-$F$22 -> 2.734080586 | H24: =$H$22+G24*'Equipment Cost'!$Q$23*(1+'Equipment Cost'!$P$17) -> 485.5143906 | I24: 0 | J24: 0 | K24: 23.4603 | L24: 485.5143906 | M24: =J24+(K24*Statistics!$G$9) -> 2.88796293 | N24: =(L24-$L$22) / ($M$22-M24) -> 1.780758016
B25: 3 | C25: ='Base Case Eff Dist'!G20 -> 2.2 | D25: =INDEX(EffDist1,B25+1) -> TSL3 | E25: ='Equipment Cost'!K18 -> 255.1326723 | F25: =E25*MfgMarkup -> 321.4671671 | G25: 11.26250509 | H25: =$H$22+G25*'Equipment Cost'!$Q$23*(1+'Equipment Cost'!$P$17) -> 496.2089467 | I25: 0 | J25: 0 | K25: 19.1158 | L25: 496.2089467 | M25: =J25+(K25*Statistics!$G$9) -> 2.35315498 | N25: 5.740811226
B26: 4 | C26: ='Base Case Eff Dist'!G21 -> 0.04 | D26: =INDEX(EffDist1,B26+1) -> TSL4 | E26: ='Equipment Cost'!K19 -> 251.1041049 | F26: =E26*MfgMarkup -> 316.3911722 | G26: 6.186510197 | H26: =$H$22+G26*'Equipment Cost'!$Q$23*(1+'Equipment Cost'!$P$17) -> 489.8437016 | I26: 0 | J26: 0 | K26: 0.34756 | L26: 489.8437016 | M26: =J26+(K26*Statistics!$G$9) -> 0.042784636 | N26: 1.626211307
B27: * The manufacturing production cost (MPC) includes the direct labor, direct material, and direct overhead.
B28: ** The manufacturing selling price (MSP) includes manufacturer profit and non-production costs, such as selling, general and administrative expenses, research and development, and interest.

Sheet LCC & PBP Calcs
B1: LCC & PBP Calcs
B3: User Input: | T3: ANNUAL CASH FLOW CALCULATION :
B4: Hours per year Active: | C4: =71 * MO_HH_use -> 662.2238772 | D4: hours | Y4: Microwaves | AE4: Combination Ovens
V5: Elec Price | W5: Discount | Y5: Efficiency Level | AE5: Efficiency Level
B6: Microwave Oven Lifetime | C6: =life -> 9.322323659 | D6: years | T6: Age | U6: Year | V6: $/kWh | W6: Factor | Y6: 0 | Z6: =Y6+1 -> 1 | AA6: 2 | AB6: 3 | AC6: 4 | AE6: 0 | AF6: =AE6+1 -> 1 | AG6: =AF6+1 -> 2 | AH6: =AG6+1 -> 3 | AI6: =AH6+1 -> 4
U7: =yr0 -> 2008 | V7: =ElecPrice -> 0.1128339834 | W7: =drate -> 0.02450231787
B8: Import Parameters | T8: 0 | W8: 1 | Y8: =INDEX(InstalledPrice, _i+1) -> 222.7407685 | Z8: 223.1403358 | AA8: 223.6331356 | AB8: 224.6986486 | AC8: 229.5733705 | AE8: =INDEX(InstalledPrice2, _i+1) -> 481.0238612 | AF8: =INDEX(InstalledPrice2, _i+1) -> 481.0238612 | AG8: =INDEX(InstalledPrice2, _i+1) -> 484.4448171 | AH8: =INDEX(InstalledPrice2, _i+1) -> 495.1158134 | AI8: =INDEX(InstalledPrice2, _i+1) -> 488.7645907
B9: from Equipment Price : | C9: Installed Prices | T9: =T8+1 -> 1 | U9: =StartYear -> 2014 | V9: =V$7 * INDEX(priceTrend_Elec,$U9-yr0+1) -> 0.1104412486 | W9: =(1+W$7) ^ (-T9) -> 0.9760836872 | Y9: =INDEX(MO_UEC,_i+1) *_ElecPrice -> 3.577314022 | Z9: 1.788657011 | AA9: 1.341492758 | AB9: 0.8943285056 | AC9: 0.01788657011 | AE9: =INDEX(Combo_UEC,_i+1) *_ElecPrice -> 4.024478275 | AF9: 3.309015471 | AG9: 2.414686965 | AH9: 1.967522712 | AI9: 0.03577314022
T10: 2 | U10: =U9+1 -> 2015 | V10: =V$7 * INDEX(priceTrend_Elec,$U10-yr0+1) -> 0.110971508 | W10: 0.9527393645 | Y10: 3.59448971 | Z10: 1.797244855 | AA10: 1.347933641 | AB10: 0.8986224276 | AC10: 0.01797244855 | AE10: 4.043800924 | AF10: 3.324902982 | AG10: 2.426280555 | AH10: 1.976969341 | AI10: 0.0359448971
B11: from Discount Rate : | T11: 3 | U11: 2016 | V11: 0.112513145 | W11: 0.9299533518 | Y11: 3.644425037 | Z11: 1.822212519 | AA11: 1.366659389 | AB11: 0.9111062593 | AC11: 0.01822212519 | AE11: 4.099978167 | AF11: 3.37109316 | AG11: 2.4599869 | AH11: 2.004433771 | AI11: 0.03644425037
B12: discount rate | C12: =drate -> 0.02450231787 | T12: 4 | U12: 2017 | V12: 0.1125788236 | W12: 0.9077122966 | Y12: 3.646552439 | Z12: 1.823276219 | AA12: 1.367457164 | AB12: 0.9116381096 | AC12: 0.01823276219 | AE12: 4.102371493 | AF12: 3.373061006 | AG12: 2.461422896 | AH12: 2.005603841 | AI12: 0.03646552439
T13: 5 | U13: 2018 | V13: 0.1124985424 | W13: 0.8860031654 | Y13: 3.643952041 | Z13: 1.821976021 | AA13: 1.366482016 | AB13: 0.9109880104 | AC13: 0.01821976021 | AE13: 4.099446047 | AF13: 3.370655638 | AG13: 2.459667628 | AH13: 2.004173623 | AI13: 0.03643952041
B14: from Energy Prices and Energy Price Trends : | T14: 6 | U14: 2019 | V14: =V$7 * INDEX(priceTrend_Elec,$U14-yr0+1) -> 0.1125041582 | W14: =(1+W$7) ^ (-T14) -> 0.8648132366 | Y14: 3.644133943 | Z14: 1.822066972 | AA14: 1.366550229 | AB14: 0.9110334859 | AC14: 0.01822066972 | AE14: 4.099650686 | AF14: 3.370823898 | AG14: 2.459790412 | AH14: 2.004273669 | AI14: 0.03644133943
B15: (in 2010 dollars) | T15: 7 | U15: 2020 | V15: 0.1131032631 | W15: 0.8441300927 | Y15: 3.663539615 | Z15: 1.831769807 | AA15: 1.373827356 | AB15: 0.9158849037 | AC15: 0.01831769807 | AE15: 4.121482067 | AF15: 3.388774144 | AG15: 2.47288924 | AH15: 2.014946788 | AI15: 0.03663539615
B16: =StartYear & " Elec Price" -> 2014 Elec Price | C16: =ElecPrice * INDEX(priceTrend_Elec,StartYear-yr0+1) -> 0.1104412486 | D16: $/kWh | T16: 8 | U16: 2021 | V16: 0.1139979962 | W16: 0.8239416134 | Y16: 3.692521006 | Z16: 1.846260503 | AA16: 1.384695377 | AB16: 0.9231302516 | AC16: 0.01846260503 | AE16: 4.154086132 | AF16: 3.415581931 | AG16: 2.492451679 | AH16: 2.030886554 | AI16: 0.03692521006
T17: 9 | U17: 2022 | V17: 0.1143899798 | W17: 0.8042359681 | Y17: 3.705217788 | Z17: 1.852608894 | AA17: 1.389456671 | AB17: 0.926304447 | AC17: 0.01852608894 | AE17: 4.168370012 | AF17: 3.427326454 | AG17: 2.501022007 | AH17: 2.037869783 | AI17: 0.03705217788
B18: from Base Case Efficiency : | T18: 10 | U18: 2023 | V18: 0.1153099663 | W18: 0.7850016091 | Y18: 3.735017166 | Z18: 1.867508583 | AA18: 1.400631437 | AB18: 0.9337542916 | AC18: 0.01867508583 | AE18: 4.201894312 | AF18: 3.454890879 | AG18: 2.521136587 | AH18: 2.054259442 | AI18: 0.03735017166
B19: Base Case Eff. Level - PC1 | C19: =iBase -> 2 | T19: 11 | U19: 2024 | V19: 0.1164024728 | W19: 0.7662272651 | Y19: =INDEX(MO_UEC,_i+1) *_ElecPrice -> 3.770404659 | Z19: 1.88520233 | AA19: 1.413901747 | AB19: 0.9426011648 | AC19: 0.0188520233 | AE19: =INDEX(Combo_UEC,_i+1) *_ElecPrice -> 4.241705242 | AF19: 3.48762431 | AG19: 2.545023145 | AH19: 2.073722563 | AI19: 0.03770404659
B20: Base Case Eff. Level - PC2 | C20: =iBase2 -> 0 | T20: 12 | U20: 2025 | V20: 0.1159975191 | W20: 0.7479019342 | Y20: 3.757287762 | Z20: 1.878643881 | AA20: 1.408982911 | AB20: 0.9393219404 | AC20: 0.01878643881 | AE20: 4.226948732 | AF20: 3.47549118 | AG20: 2.536169239 | AH20: 2.066508269 | AI20: 0.03757287762
T21: 13 | U21: 2026 | V21: 0.1159990457 | W21: 0.7300148776 | Y21: 3.75733721 | Z21: 1.878668605 | AA21: 1.409001454 | AB21: 0.9393343024 | AC21: 0.01878668605 | AE21: 4.227004361 | AF21: 3.475536919 | AG21: 2.536202616 | AH21: 2.066535465 | AI21: 0.0375733721
B22: Microwave Ovens Product Class 1 | T22: 14 | U22: 2027 | V22: 0.1163988584 | W22: 0.7125556135 | Y22: 3.770287586 | Z22: 1.885143793 | AA22: 1.413857845 | AB22: 0.9425718965 | AC22: 0.01885143793 | AE22: 4.241573534 | AF22: 3.487516017 | AG22: 2.544944121 | AH22: 2.073658172 | AI22: 0.03770287586
B23: Level | C23: Efficiency Level Source | D23: Standby Power | E23: Installed Price | F23: Energy Use | G23: Annual Oper. Cost | H23: Cumulative Cash Flow | I23: LCC | J23: LCC Savings | K23: Price Increase | L23: Oper. Cost Savings | M23: Payback Period | N23: Total Oper. Cost | O23: Net Cost | P23: No Impact | Q23: Net Benefit | R23: PB Undefined | T23: 15 | U23: 2028 | V23: 0.1168126852 | W23: 0.6955139105 | Y23: 3.783691891 | Z23: 1.891845946 | AA23: 1.418884459 | AB23: 0.9459229728 | AC23: 0.01891845946 | AE23: 4.256653378 | AF23: 3.499915 | AG23: 2.553992027 | AH23: 2.08103054 | AI23: 0.03783691891
T24: 16 | U24: =U23+1 -> 2029 | V24: 0.1178235958 | W24: =(1+W$7) ^ (-T24) -> 0.6788797823 | Y24: 3.816436404 | Z24: 1.908218202 | AA24: 1.431163651 | AB24: 0.9541091009 | AC24: 0.01908218202 | AE24: 4.293490954 | AF24: 3.530203673 | AG24: 2.576094572 | AH24: 2.099040022 | AI24: 0.03816436404
D25: Watts | E25: $ | F25: kWh/yr | G25: $ / year | H25: $ | I25: $ | J25: $ | M25: year | T25: 17 | U25: =U24+1 -> 2030 | V25: 0.118822439 | W25: =(1+W$7) ^ (-T25) -> 0.6626434811 | Y25: 3.848790036 | Z25: 1.924395018 | AA25: 1.443296264 | AB25: 0.962197509 | AC25: 0.01924395018 | AE25: 4.329888791 | AF25: 3.560130783 | AG25: 2.597933274 | AH25: 2.11683452 | AI25: 0.03848790036
A26: =IF(iBase=B26, ">", "") ->  | B26: 0 | C26: =INDEX(labelEffLvl, B26+1) -> Baseline | D26: =INDEX(_eff1, B26+1) -> 4 | E26: =INDEX(InstalledPrice, level+1) -> 222.7407685 | F26: =(8760-HoursActive)*D26/1000 -> 32.39110449 | G26: =F26 * INDEX(_ElecPrice, 1) -> 3.577314022 | H26: =E26 + SUM(INDEX(OperCost1,1,level+1):INDEX(OperCost1,life,level+1)) + (life-INT(life))*INDEX(OperCost1,life+1,level+1) -> 256.7567985 | I26: =E26 + SUMPRODUCT(INDEX(OperCost1,1,level+1):INDEX(OperCost1,life,level+1), INDEX(PWF,1):INDEX(PWF,life)) + (life-INT(life))*INDEX(OperCost1,life+1,level+1)*INDEX(PWF,life+1) -> 252.7961986 | N26: =I26-E26 -> 30.05543014 | T26: 18 | U26: =U25+1 -> 2031 | V26: 0.1192721111 | W26: =(1+W$7) ^ (-T26) -> 0.6467954924 | Y26: 3.863355412 | Z26: 1.931677706 | AA26: 1.44875828 | AB26: 0.9658388531 | AC26: 0.01931677706 | AE26: 4.346274839 | AF26: 3.573603756 | AG26: 2.607764903 | AH26: 2.124845477 | AI26: 0.03863355412
A27: =IF(iBase=B27, ">", "") ->  | B27: 1 | C27: =INDEX(labelEffLvl, B27+1) -> TSL1 | D27: =INDEX(_eff1, B27+1) -> 2 | E27: =INDEX(InstalledPrice, level+1) -> 223.1403358 | F27: =(8760-HoursActive)*D27/1000 -> 16.19555225 | G27: =F27 * INDEX(_ElecPrice, 1) -> 1.788657011 | H27: =E27 + SUM(INDEX(OperCost1,1,level+1):INDEX(OperCost1,life,level+1)) + (life-INT(life))*INDEX(OperCost1,life+1,level+1) -> 240.1483509 | I27: =E27 + SUMPRODUCT(INDEX(OperCost1,1,level+1):INDEX(OperCost1,life,level+1), INDEX(PWF,1):INDEX(PWF,life)) + (life-INT(life))*INDEX(OperCost1,life+1,level+1)*INDEX(PWF,life+1) -> 238.1680509 | J27: =IF(iBase<B27, OFFSET(I$26,iBase,0) - I27, 0) -> 0 | K27: =IF(iBase>=B27, 0, E27-OFFSET(E$26,iBase,0)) -> 0 | L27: =IF(iBase>=B27, 0, OFFSET(G$26,iBase,0)-G27) -> 0 | M27: =IF(iBase>=B27, "N/A", IF(L27>0, K27 / L27, "indef")) -> N/A | N27: =I27-E27 -> 15.02771507 | O27: =IF($J27<0, 1, "") ->  | P27: =IF($J27=0, 1, "") -> 1 | Q27: =IF($J27>0, 1, "") ->  | R27: =IF(iBase>=B27, "", IF(ROUND(L27,0)<0, 1, "")) ->  | T27: 19 | U27: =U26+1 -> 2032 | V27: 0.1199949991 | W27: =(1+W$7) ^ (-T27) -> 0.6313265291 | Y27: =INDEX(MO_UEC,_i+1) *_ElecPrice -> 3.886770553 | Z27: 1.943385277 | AA27: 1.457538958 | AB27: 0.9716926384 | AC27: 0.01943385277 | AE27: 4.372616873 | AF27: 3.595262762 | AG27: 2.623570124 | AH27: 2.137723804 | AI27: 0.03886770553
A28: =IF(iBase=B28, ">", "") -> > | B28: 2 | C28: =INDEX(labelEffLvl, B28+1) -> TSL2 | D28: =INDEX(_eff1, B28+1) -> 1.5 | E28: =INDEX(InstalledPrice, level+1) -> 223.6331356 | F28: =(8760-HoursActive)*D28/1000 -> 12.14666418 | G28: =F28 * INDEX(_ElecPrice, 1) -> 1.341492758 | H28: =E28 + SUM(INDEX(OperCost1,1,level+1):INDEX(OperCost1,life,level+1)) + (life-INT(life))*INDEX(OperCost1,life+1,level+1) -> 236.3891469 | I28: =E28 + SUMPRODUCT(INDEX(OperCost1,1,level+1):INDEX(OperCost1,life,level+1), INDEX(PWF,1):INDEX(PWF,life)) + (life-INT(life))*INDEX(OperCost1,life+1,level+1)*INDEX(PWF,life+1) -> 234.9039219 | J28: =IF(iBase<B28, OFFSET(I$26,iBase,0) - I28, 0) -> 0 | K28: =IF(iBase>=B28, 0, E28-OFFSET(E$26,iBase,0)) -> 0 | L28: =IF(iBase>=B28, 0, OFFSET(G$26,iBase,0)-G28) -> 0 | M28: =IF(iBase>=B28, "N/A", IF(L28>0, K28 / L28, "indef")) -> N/A | N28: =I28-E28 -> 11.2707863 | O28: =IF($J28<0, 1, "") ->  | P28: =IF($J28=0, 1, "") -> 1 | Q28: =IF($J28>0, 1, "") ->  | R28: =IF(iBase>=B28, "", IF(ROUND(L28,0)<0, 1, "")) ->  | T28: 20 | U28: 2033 | V28: 0.1203639308 | W28: =(1+W$7) ^ (-T28) -> 0.6162275263 | Y28: 3.89872066 | Z28: 1.94936033 | AA28: 1.462020247 | AB28: 0.974680165 | AC28: 0.0194936033 | AE28: 4.386060742 | AF28: 3.60631661 | AG28: 2.631636445 | AH28: 2.144296363 | AI28: 0.0389872066
A29: =IF(iBase=B29, ">", "") ->  | B29: 3 | C29: =INDEX(labelEffLvl, B29+1) -> TSL3 | D29: =INDEX(_eff1, B29+1) -> 1 | E29: =INDEX(InstalledPrice, level+1) -> 224.6986486 | F29: =(8760-HoursActive)*D29/1000 -> 8.097776123 | G29: =F29 * INDEX(_ElecPrice, 1) -> 0.8943285056 | H29: =E29 + SUM(INDEX(OperCost1,1,level+1):INDEX(OperCost1,life,level+1)) + (life-INT(life))*INDEX(OperCost1,life+1,level+1) -> 233.2026561 | I29: =E29 + SUMPRODUCT(INDEX(OperCost1,1,level+1):INDEX(OperCost1,life,level+1), INDEX(PWF,1):INDEX(PWF,life)) + (life-INT(life))*INDEX(OperCost1,life+1,level+1)*INDEX(PWF,life+1) -> 232.2125061 | J29: =IF(iBase<B29, OFFSET(I$26,iBase,0) - I29, 0) -> 2.691415779 | K29: =IF(iBase>=B29, 0, E29-OFFSET(E$26,iBase,0)) -> 1.065512989 | L29: =IF(iBase>=B29, 0, OFFSET(G$26,iBase,0)-G29) -> 0.4471642528 | M29: =IF(iBase>=B29, "N/A", IF(L29>0, K29 / L29, "indef")) -> 2.38282238 | N29: =I29-E29 -> 7.513857535 | O29: =IF($J29<0, 1, "") ->  | P29: =IF($J29=0, 1, "") ->  | Q29: =IF($J29>0, 1, "") -> 1 | R29: =IF(iBase>=B29, "", IF(ROUND(L29,0)<0, 1, "")) ->  | T29: =T28+1 -> 21 | U29: 2034 | V29: 0.1216935371 | W29: 0.6014896361 | Y29: 3.941788076 | Z29: 1.970894038 | AA29: 1.478170529 | AB29: 0.985447019 | AC29: 0.01970894038 | AE29: =INDEX(Combo_UEC,_i+1) *_ElecPrice -> 4.434511586 | AF29: 3.64615397 | AG29: 2.660706951 | AH29: 2.167983442 | AI29: 0.03941788076
A30: =IF(iBase=B30, ">", "") ->  | B30: 4 | C30: =INDEX(labelEffLvl, B30+1) -> TSL4 | D30: =INDEX(_eff1, B30+1) -> 0.02 | E30: =INDEX(InstalledPrice, level+1) -> 229.5733705 | F30: =(8760-HoursActive)*D30/1000 -> 0.1619555225 | G30: =F30 * INDEX(_ElecPrice, 1) -> 0.01788657011 | H30: =E30 + SUM(INDEX(OperCost1,1,level+1):INDEX(OperCost1,life,level+1)) + (life-INT(life))*INDEX(OperCost1,life+1,level+1) -> 229.7434507 | I30: =E30 + SUMPRODUCT(INDEX(OperCost1,1,level+1):INDEX(OperCost1,life,level+1), INDEX(PWF,1):INDEX(PWF,life)) + (life-INT(life))*INDEX(OperCost1,life+1,level+1)*INDEX(PWF,life+1) -> 229.7236477 | J30: =IF(iBase<B30, OFFSET(I$26,iBase,0) - I30, 0) -> 5.180274239 | K30: =IF(iBase>=B30, 0, E30-OFFSET(E$26,iBase,0)) -> 5.940234914 | L30: =IF(iBase>=B30, 0, OFFSET(G$26,iBase,0)-G30) -> 1.323606188 | M30: =IF(iBase>=B30, "N/A", IF(L30>0, K30 / L30, "indef")) -> 4.487917151 | N30: =I30-E30 -> 0.1502771507 | O30: =IF($J30<0, 1, "") ->  | P30: =IF($J30=0, 1, "") ->  | Q30: =IF($J30>0, 1, "") -> 1 | R30: =IF(iBase>=B30, "", IF(ROUND(L30,0)<0, 1, "")) ->  | T30: 22 | U30: 2035 | V30: 0.1221947129 | W30: 0.5871042218 | Y30: 3.958021713 | Z30: 1.979010856 | AA30: 1.484258142 | AB30: 0.9895054282 | AC30: 0.01979010856 | AE30: 4.452774427 | AF30: 3.661170084 | AG30: 2.671664656 | AH30: 2.176911942 | AI30: 0.03958021713
T31: 23 | U31: 2036 | V31: 0.1231431173 | W31: 0.5730628536 | Y31: 3.988741579 | Z31: 1.99437079 | AA31: 1.495778092 | AB31: 0.9971853948 | AC31: 0.0199437079 | AE31: 4.487334277 | AF31: 3.689585961 | AG31: 2.692400566 | AH31: 2.193807869 | AI31: 0.03988741579
B32: Microwave Ovens Product Class 2 | T32: 24 | U32: 2037 | V32: 0.1240988827 | W32: 0.5593573032 | Y32: 4.019699875 | Z32: 2.009849938 | AA32: 1.507387453 | AB32: 1.004924969 | AC32: 0.02009849938 | AE32: 4.52216236 | AF32: 3.718222385 | AG32: 2.713297416 | AH32: 2.210834932 | AI32: 0.04019699875
B33: Level | C33: Efficiency Level Source | D33: Standby Power | E33: Installed Price | F33: Energy Use | G33: Annual Oper. Cost | H33: Cumulative Cash Flow | I33: LCC | J33: LCC Savings | K33: Price Increase | L33: Oper. Cost Savings | M33: Payback Period | N33: Total Oper. Cost | O33: Net Cost | P33: No Impact | Q33: Net Benefit | R33: PB Undefined | T33: 25 | U33: 2038 | V33: 0.1250620661 | W33: 0.5459795389 | Y33: 4.050898452 | Z33: 2.025449226 | AA33: 1.519086919 | AB33: 1.012724613 | AC33: 0.02025449226 | AE33: 4.557260758 | AF33: 3.747081068 | AG33: 2.734356455 | AH33: 2.227994149 | AI33: 0.04050898452
T34: 26 | U34: 2039 | V34: 0.1260327253 | W34: 0.5329217215 | Y34: 4.082339174 | Z34: 2.041169587 | AA34: 1.53087719 | AB34: 1.020584793 | AC34: 0.02041169587 | AE34: 4.59263157 | AF34: 3.776163736 | AG34: 2.755578942 | AH34: 2.245286546 | AI34: 0.04082339174
D35: Watts | E35: $ | F35: kWh/yr | G35: $ / year | H35: $ | I35: $ | J35: $ | M35: year | T35: 27 | U35: 2040 | V35: 0.1270109181 | W35: 0.5201761989 | Y35: =INDEX(MO_UEC,_i+1) *_ElecPrice -> 4.11402392 | Z35: 2.05701196 | AA35: 1.54275897 | AB35: 1.02850598 | AC35: 0.0205701196 | AE35: 4.62827691 | AF35: 3.805472126 | AG35: 2.776966146 | AH35: 2.262713156 | AI35: 0.0411402392
A36: =IF(iBase2=B36, ">", "") -> > | B36: 0 | C36: =INDEX(labelEffLvl2, B36+1) -> Baseline | D36: =INDEX(_eff2, B36+1) -> 4.5 | E36: =INDEX(InstalledPrice2, level+1) -> 481.0238612 | F36: =(8760-HoursActive)*D36/1000 -> 36.43999255 | G36: =F36 * INDEX(_ElecPrice, 1) -> 4.024478275 | H36: =E36 + SUM(INDEX(OperCost2,1,level+1):INDEX(OperCost2,life,level+1)) + (life-INT(life))*INDEX(OperCost2,life+1,level+1) -> 519.291895 | I36: =E36 + SUMPRODUCT(INDEX(OperCost2,1,level+1):INDEX(OperCost2,life,level+1), INDEX(PWF,1):INDEX(PWF,life)) + (life-INT(life))*INDEX(OperCost2,life+1,level+1)*INDEX(PWF,life+1) -> 514.8362201 | N36: =I36-E36 -> 33.81235891 | T36: 28 | U36: 2041 | V36: 0.1279967031 | W36: 0.5077355023 | Y36: 4.145954585 | Z36: 2.072977293 | AA36: 1.554732969 | AB36: 1.036488646 | AC36: 0.02072977293 | AE36: 4.664198908 | AF36: 3.835007991 | AG36: 2.798519345 | AH36: 2.280275022 | AI36: 0.04145954585
A37: =IF(iBase2=B37, ">", "") ->  | B37: 1 | C37: =INDEX(labelEffLvl2, B37+1) -> TSL1 | D37: =INDEX(_eff2, B37+1) -> 3.7 | E37: =INDEX(InstalledPrice2, level+1) -> 481.0238612 | F37: =(8760-HoursActive)*D37/1000 -> 29.96177165 | G37: =F37 * INDEX(_ElecPrice, 1) -> 3.309015471 | H37: =E37 + SUM(INDEX(OperCost2,1,level+1):INDEX(OperCost2,life,level+1)) + (life-INT(life))*INDEX(OperCost2,life+1,level+1) -> 512.488689 | I37: =E37 + SUMPRODUCT(INDEX(OperCost2,1,level+1):INDEX(OperCost2,life,level+1), INDEX(PWF,1):INDEX(PWF,life)) + (life-INT(life))*INDEX(OperCost2,life+1,level+1)*INDEX(PWF,life+1) -> 508.8251341 | J37: =IF(iBase2<B37, OFFSET(I$36,iBase2,0) - I37, 0) -> 6.011086028 | K37: =IF(iBase2>=B37, 0, E37-OFFSET(E$36,iBase2,0)) -> 0 | L37: =IF(iBase2>=B37, 0, OFFSET(G$36,iBase2,0)-G37) -> 0.7154628045 | M37: =IF(iBase2>=B37, "N/A", IF(L37>0, K37 / L37, "indef")) -> 0 | N37: =I37-E37 -> 27.80127288 | O37: =IF($J37<0, 1, "") ->  | P37: =IF($J37=0, 1, "") ->  | Q37: =IF($J37>0, 1, "") -> 1 | R37: =IF(iBase2>=B37, "", IF(ROUND(L37,0)<0, 1, "")) ->  | T37: 29 | U37: 2042 | V37: 0.1289901392 | W37: 0.4955923412 | Y37: 4.178133077 | Z37: 2.089066539 | AA37: 1.566799904 | AB37: 1.044533269 | AC37: 0.02089066539 | AE37: 4.700399712 | AF37: 3.864773096 | AG37: 2.820239827 | AH37: 2.297973192 | AI37: 0.04178133077
A38: =IF(iBase2=B38, ">", "") ->  | B38: 2 | C38: =INDEX(labelEffLvl2, B38+1) -> TSL2 | D38: =INDEX(_eff2, B38+1) -> 2.7 | E38: =INDEX(InstalledPrice2, level+1) -> 484.4448171 | F38: =(8760-HoursActive)*D38/1000 -> 21.86399553 | G38: =F38 * INDEX(_ElecPrice, 1) -> 2.414686965 | H38: =E38 + SUM(INDEX(OperCost2,1,level+1):INDEX(OperCost2,life,level+1)) + (life-INT(life))*INDEX(OperCost2,life+1,level+1) -> 507.4056373 | I38: =E38 + SUMPRODUCT(INDEX(OperCost2,1,level+1):INDEX(OperCost2,life,level+1), INDEX(PWF,1):INDEX(PWF,life)) + (life-INT(life))*INDEX(OperCost2,life+1,level+1)*INDEX(PWF,life+1) -> 504.7322324 | J38: =IF(iBase2<B38, OFFSET(I$36,iBase2,0) - I38, 0) -> 10.10398771 | K38: =IF(iBase2>=B38, 0, E38-OFFSET(E$36,iBase2,0)) -> 3.420955857 | L38: =IF(iBase2>=B38, 0, OFFSET(G$36,iBase2,0)-G38) -> 1.60979131 | M38: =IF(iBase2>=B38, "N/A", IF(L38>0, K38 / L38, "indef")) -> 2.12509276 | N38: =I38-E38 -> 20.28741535 | O38: =IF($J38<0, 1, "") ->  | P38: =IF($J38=0, 1, "") ->  | Q38: =IF($J38>0, 1, "") -> 1 | R38: =IF(iBase2>=B38, "", IF(ROUND(L38,0)<0, 1, "")) ->  | T38: 30 | U38: 2043 | V38: 0.1299912858 | W38: 0.4837395998 | Y38: 4.21056132 | Z38: 2.10528066 | AA38: 1.578960495 | AB38: 1.05264033 | AC38: 0.0210528066 | AE38: 4.736881485 | AF38: 3.894769221 | AG38: 2.842128891 | AH38: 2.315808726 | AI38: 0.0421056132
A39: =IF(iBase2=B39, ">", "") ->  | B39: 3 | C39: =INDEX(labelEffLvl2, B39+1) -> TSL3 | D39: =INDEX(_eff2, B39+1) -> 2.2 | E39: =INDEX(InstalledPrice2, level+1) -> 495.1158134 | F39: =(8760-HoursActive)*D39/1000 -> 17.81510747 | G39: =F39 * INDEX(_ElecPrice, 1) -> 1.967522712 | H39: =E39 + SUM(INDEX(OperCost2,1,level+1):INDEX(OperCost2,life,level+1)) + (life-INT(life))*INDEX(OperCost2,life+1,level+1) -> 513.8246299 | I39: =E39 + SUMPRODUCT(INDEX(OperCost2,1,level+1):INDEX(OperCost2,life,level+1), INDEX(PWF,1):INDEX(PWF,life)) + (life-INT(life))*INDEX(OperCost2,life+1,level+1)*INDEX(PWF,life+1) -> 511.6462999 | J39: =IF(iBase2<B39, OFFSET(I$36,iBase2,0) - I39, 0) -> 3.189920194 | K39: =IF(iBase2>=B39, 0, E39-OFFSET(E$36,iBase2,0)) -> 14.09195214 | L39: =IF(iBase2>=B39, 0, OFFSET(G$36,iBase2,0)-G39) -> 2.056955563 | M39: =IF(iBase2>=B39, "N/A", IF(L39>0, K39 / L39, "indef")) -> 6.850878255 | N39: =I39-E39 -> 16.53048658 | O39: =IF($J39<0, 1, "") ->  | P39: =IF($J39=0, 1, "") ->  | Q39: =IF($J39>0, 1, "") -> 1 | R39: =IF(iBase2>=B39, "", IF(ROUND(L39,0)<0, 1, "")) ->  | T39: 31 | U39: 2044 | V39: 0.1310002027 | W39: 0.4721703322 | Y39: 4.243241253 | Z39: 2.121620626 | AA39: 1.59121547 | AB39: 1.060810313 | AC39: 0.02121620626 | AE39: 4.773646409 | AF39: 3.924998159 | AG39: 2.864187845 | AH39: 2.333782689 | AI39: 0.04243241253
A40: =IF(iBase2=B40, ">", "") ->  | B40: 4 | C40: =INDEX(labelEffLvl2, B40+1) -> TSL4 | D40: =INDEX(_eff2, B40+1) -> 0.04 | E40: =INDEX(InstalledPrice2, level+1) -> 488.7645907 | F40: =(8760-HoursActive)*D40/1000 -> 0.3239110449 | G40: =F40 * INDEX(_ElecPrice, 1) -> 0.03577314022 | H40: =E40 + SUM(INDEX(OperCost2,1,level+1):INDEX(OperCost2,life,level+1)) + (life-INT(life))*INDEX(OperCost2,life+1,level+1) -> 489.104751 | I40: =E40 + SUMPRODUCT(INDEX(OperCost2,1,level+1):INDEX(OperCost2,life,level+1), INDEX(PWF,1):INDEX(PWF,life)) + (life-INT(life))*INDEX(OperCost2,life+1,level+1)*INDEX(PWF,life+1) -> 489.065145 | J40: =IF(iBase2<B40, OFFSET(I$36,iBase2,0) - I40, 0) -> 25.77107509 | K40: =IF(iBase2>=B40, 0, E40-OFFSET(E$36,iBase2,0)) -> 7.740729516 | L40: =IF(iBase2>=B40, 0, OFFSET(G$36,iBase2,0)-G40) -> 3.988705135 | M40: =IF(iBase2>=B40, "N/A", IF(L40>0, K40 / L40, "indef")) -> 1.940662259 | N40: =I40-E40 -> 0.3005543014 | O40: =IF($J40<0, 1, "") ->  | P40: =IF($J40=0, 1, "") ->  | Q40: =IF($J40>0, 1, "") -> 1 | R40: =IF(iBase2>=B40, "", IF(ROUND(L40,0)<0, 1, "")) ->  | T40: 32 | U40: 2045 | V40: 0.1320169502 | W40: 0.4608777588 | Y40: 4.276174827 | Z40: 2.138087414 | AA40: 1.60356556 | AB40: 1.069043707 | AC40: 0.02138087414 | AE40: 4.810696681 | AF40: 3.955461715 | AG40: 2.886418008 | AH40: 2.351896155 | AI40: 0.04276174827
T41: 33 | U41: 2046 | V41: 0.1330415891 | W41: 0.4498552622 | Y41: 4.309364014 | Z41: 2.154682007 | AA41: 1.616011505 | AB41: 1.077341003 | AC41: 0.02154682007 | AE41: 4.848034515 | AF41: 3.986161713 | AG41: 2.908820709 | AH41: 2.370150207 | AI41: 0.04309364014
T42: 34 | U42: 2047 | V42: 0.1340741806 | W42: 0.4390963831 | Y42: 4.342810795 | Z42: 2.171405397 | AA42: 1.628554048 | AB42: 1.085702699 | AC42: 0.02171405397 | AE42: 4.885662144 | AF42: 4.017099985 | AG42: 2.931397287 | AH42: 2.388545937 | AI42: 0.04342810795
T43: 35 | U43: 2048 | V43: 0.1351147866 | W43: 0.4285948166 | Y43: 4.376517171 | Z43: 2.188258585 | AA43: 1.641193939 | AB43: 1.094129293 | AC43: 0.02188258585 | AE43: 4.923581817 | AF43: 4.048278383 | AG43: 2.95414909 | AH43: 2.407084444 | AI43: 0.04376517171

Sheet CB_DATA_ (hidden)
A1: Crystal Ball Data
A3: Workbook Variables | B3: Last Var Column | C3: 0
A4: Name:
A5: Value:
A7: Worksheet Data | B7: Last Data Column Used
B8: 8
A10: Sheet Ref
A11: =CB_DATA_!#REF! ->  | B11: ='RECS Households'!#REF! ->  | C11: ='Discount Rate'!#REF! ->  | D11: ='Base Case Eff Dist'!#REF! ->  | E11: =Lifetime!#REF! ->  | F11: ='Equipment Cost'!#REF! ->  | G11: ='Energy Prices'!#REF! ->  | H11: ='LCC & PBP Calcs'!#REF! -> 
A13: Sheet Guid
A14: 0e1ece3e-1518-45d8-8c41-0f2daa389e4c | B14: c2f36ad4-508f-4c8c-88be-b159fffd339e | C14: 022116d7-ff3c-436c-a674-3b2c5efae5c2 | D14: 3d0fde4b-3017-483c-ac1b-f4a67aedc659 | E14: 461277cc-af47-4368-8a0c-bd70d8ca40f0 | F14: a4c6f2e4-6b79-43a1-8823-f22439950138 | G14: ac9f4703-d1c5-4b09-94d5-f1e45df506db | H14: 56294372-89a7-4ef8-8d4c-e71ae9d61407
A16: Deleted sheet count
A19: Last row used
A20: 28 | B20: 37 | C20: 31 | D20: 31 | E20: 31 | F20: 31 | G20: 31 | H20: 40
A25: Data blocks
A26: CB_Block_0 | B26: CB_Block_0 | C26: CB_Block_7.0.0.0:1 | D26: CB_Block_7.0.0.0:1 | E26: CB_Block_0 | F26: CB_Block_7.0.0.0:1 | G26: CB_Block_7.0.0.0:1 | H26: CB_Block_7.0.0.0:4
A27: 㜸〱敤㕣搹㙦ㅢ挷ㄹ攷㔲㈲挵搵㘱㈹㤶散挴㌹ㅣ攵㙣㔲ㄹ㡣㝣㈵㌱〲搷搱ㄱ搹㙡慣㐸㌱㘵〷㐵㤰戲㉢㜲㔶摡㜸て㜵㜷㈹㕢〹㕡扢㐰㠰摥て㐵摢㠷〶㐵㡢〲㐵搰扥ㄴ㐸ㅦ㡡愴挷㝦搰ㄴ㝤敡㕢㠱昴愵㉦㉤ち〳晤〳搲摦㙦㘶㤷㕣㤲攲㑡㘶㤲㤶㉥㌴戲㐶戳㌳摦捣捥捣㜷捥昷捤㍡愳㘵㌲㤹㡦㤰昸㤷愹㥦㠵晢㑢摢㐱㈸㥣攲㥣㘷摢愲ㄲ㕡㥥ㅢㄴ㘷㝣摦搸扥㘸〵㘱ㅦ〰昲㘵ぢ敤㐱慥ㅣ㔸㙦㠸㐲㜹㑢昸〱㠰㜲㤹㑣愱愰㘷搱捥㐱昸㍢ㄶ㍦攸散㌵摣㡦慣㌴㌷扢扣昶㍡㐶㉤㠵㥥㉦㡥㑤㕥㔱㝤捦㍥㔳㍣㔹㍣㍥㍤晤㜴㜱晡搸攴㕣捤づ㙢扥㌸敢㡡㕡攸ㅢ昶戱挹㤵摡㥡㙤㔵㕥ㄴ摢慢摥㔵攱㥥ㄵ㙢搳㈷搷㡣㔳捦ㅥ㍦㜵晡戴㜹收捣戳挳㜸㜳㘶㘹㙥㜶挵ㄷ㘶昰挹っ㤹攳㠴㑦捤㡢㡡挵㤵〹攱㕢敥㝡㜱㙥ㄶ晦ㄲ戳挷搳㌳挵搲㠶㄰㈱摦㉣㝣攱㔶㐴愰愳攳㤰㌳ㄳ〴㌵㘷㤳㕢愷㍢ぢ㔸㘸挵〸挲㥣㌳㈷㙣㕢㜷攲㔱ぢ捥㌲㜶捥㌶戶㠷㥤㤲㜰〳㉢戴戶慣㜰㍢敦慣㘲愰敡㠸㜳㌹㄰㤷っ㜷㕤扣㘴㌸㈲攷㥣慦㔹搵㝥㤵㌲㝤㥦㠹㠷㐸㑥㑣慥扥㌸ㄳ㌸㜳ㅢ㠶㉦㘷ㄴ㜰㕦㔲㘰ㄷ晣㑡㌳散㈳㥤挷攵搴攵ㅢ㌸收㘳㥤攱搰㜲挵昰敢㤰㔳㥤㈱愳挵㌷捦攰愹捥昰㠹㍤㙡敥昳㘴攷㍥㜲㉢㥢愱戵愱㠸扡攵㡥㘲㌱㝡㥥搹〰戳〲㌳㈲㔰ㅦ㘴㌶挴㙣ㄸ㤹搶晦㙦昰㐸戲㈳㥢戲㘵㈳㕢㕥换㤶㉢搹㜲㌵㕢ㄶ搹戲㤹㉤慦㘷换ㅢ搹戲㤵㉤扦㥥㉤㕦〵㑣㥣ち〳〳搹㈸㔵捥晣昰戵㔷㙦扥户昸㠳慦㝦㔳扢㜱攳搰㝢挳〷〰昴㜲㌴愹㜹摦戸〶㔲㙢㄰昱㠹攲㌴㝦㜶㘷ち昰㠴㜹摡㝣挶㍣㝥扣㝡㝡摡㌸㘹攴戸慣ㄴ攴㌷ㄱ捡ㄸ㘰㠷捤㔷㉣户敡㕤㤳戸扢㝦搶〸㐴㘳攳愶愲戶㔹慦收㔶㠳晢㜶㙥㉣㠵㐶㈸敥㙤㙤㙢っ搲搶慤〴戶ㄲ㠱㝣摦搱搶㙥㔷っ扢㈶㘶慥㕢慡昹㠱㤶㘶㘷挵昷搶㍡户㉥昸攲换昵搶戶ㄹ捤㐰愴㙤挹戱摢㔶愹㥡搴扣㈶攷㌶扣㐰戸㜲㝡㔳捥㡡㔵戹㉡晣㤲愰㐰ㄴ㔵戹搴㐳㙣㡡戸㝥㙡搹挵㐲挱慤搵㠷㤳戵收ぢ搷㐳㌰戳愸㘲扥㥢挲て户㔷㡤㌵㕢ㅣ㙥〲㔱敦㐴挳㤱愶敡〵慦㔲ぢ收㍣㌷昴㍤扢戹㘵愶扡㘵㐰搲㔴㤷扣慡攸敦捦㐸愱〰㜱摢搷愷㘹㤹捦㜶收〵㠹㠸〴㡡挹挸昷㌴㤳㕤昱ㄲ㔶㠷㔵搸㠲㌴㤹㝤㜴㤷挱㌸㕦㈹㘳㔲㌸㌰戱㈶㙡て扥昴㠹㕤㠶慤㘳敥搳〵捥㘶挷愳搵扦戰㈵摣昰㠲攱㔶㙤攱愷敡㍥㡤㌳搲㐷㤱攵㙥㐱㈰㜴摣㍤㉡㍡敤扡戶㥤扢㘶㔵挳㡤晣㠶戰搶㌷㐲搴㐱㍦ㄶち摣摡戶愴摦㠵㉡晤㈰戳㜱㘴㠳㠳㤹晣〴㠱昲㠳㐸㤹ㅣ愵㔳ち㉦㌷〹㜲昶㙢攲攵㘱㜳挱戲㐳愱㠴昲愸〹㡣㈸慤㈶搱㌷㐲ㄲ昵㡤㡡㔲ㄸㄳ收ㅣ愸搴戰摣㜰扢挱户㙤㕣愲㠸㘸㕦ㄶ昴㥣㉣愰㈸㘸㤶〷㈹扣〶愲㘹㤱〶改挰〹㈲㈲ㅢ愴㘸㜶㡣摣㑣㘴㠴㑦㤱ㄱ㠰㑦ㄲ㈱愱愷㍢换〸ㄲ㝢㍢㤱戲㔳㐷㝥摣㤷㘶㍢㔹昲㑡㥡ㅤ挲挶改㠷㤹摤捤散ㅥ㘶㐷㤰㘹㝦㠷㠴愳㤴㐳戹㌹改昷攱㔹扦㥦搹〳挸㈰㥦㜴捡㥣㐸㔴搱㠶摡㡢ㅤ㐹戸ㄱ搸挹搲㈸㔶愲㠸㤶㜱摤捥ㅣ㜱㈴愲㈳慢戳㌷㜴㙤扦搴戱㡦㜷愶捤攴㜲㐸㤱㈹愰挹戵敥〲㥡摣〸㠲㜶愹户ㅥ㐴㔷㝤㤲搹㐳挸㤴㘲愱戱扢㌷㙢㥥收攴ㅤ㘱ㄲ㈹㐳愸㑢攵ㅥㄱ㌱捤晦ㄴ〱搷㜶㜴搹户㥦㘹ち㑥㤹㜷扣晤㝣慣㌳㙦㐷㐸㙦搱㤹晢㍡㠷㥥愲摢戴愰ㅦ〶㝢㘹㝦敤愸㕦ㅥ㐵戳晥ㄸ戳挷㤱戵攸ㄷ㥥扣㙦搷㑢㈰㑤㘲㈷㠱戹㠳昴戸㐸ぢ㜷㜵㝢㔳㐸敤㌳㙣慥ㅡ晥扡〸攱扤㔸㥣㠷ㅤ散昹扥戰㜱愰慤捡ち㥥㕤敥㙥慥っㄶ㝣捦㘱晤扥㝤ㅣ摣ㄱ㡡愱扦㍦摢㤷㘹戱㡦㔳散捣㠴扦㈹㐱㌹搴扦㈷㍢ぢ㠹㐴愷㘶昲㘲扦昴戳攵扥㈴改㐲㤲㍣㠱㙤搵㥦㐴〶㈹愱晤愵愳㐴㤹㈲搸㌱〹搶㙣慤搲扢㤷㜲㌲㘹昱ㅦ戶挹㤱㈱攵慣㥤㠵敦㈰ㄸ㜱㑡㤶㔳ㄷㄶ㐳捥㡡昰㉢昰㉢㔸戶ㄸ㔴㉥㔹㡡㥡㝤㔹㜱㠷挸㡡扥扥戶戳㜴㡡㙦㑤搲㐹㡢㤴㐸攵昶搴挶㤴㜳㜸㠳愸攸㠲愴㔰㐹㜱ぢ搵㈵㄰㈹㡦戰晢㈲愶ぢㄱ㔳挴挶改㑦㌱㥢㘶㜶ㅣ㔹敥㑦㤰㌴㝢摤㜸〶挲〶戶攸捥㉥㤷㌳〵愲㐱扡〷㍦攸㈸慣㑥昱㌵愷㤹㍤㡤慣挵晣愱昳㌱㠵㄰㈵捡ㄳ㠴㐸㙢㐹㌷慦㔸攲ㅡ㘹攰㠰㠹愰搲㕣㉤〸㍤㠷㔱愵ㄱ㜳摥㝢挹ぢ攷慤㘰ㄳ㔱愸㜱㌳㉡扣戲㈱㕣㔰㤷て摢愷愵捥摢摣ㄴ㔵摤㉣㜹㌵㠸戶挵昹㕥㌸㤴㘳㝤戰㈵攵戹㍣慢㈱㜵㜷㌶挶㄰㥡㍣ㄱ挳搷㑡㑦散㥥㍣摦㍣昴㡤㌶㜶㜴搵ち㙤㌱㘴㉡愶㘳戹㘰㘲ㄷㄱ㌵愸づ㤸慢ㅢ扥㄰昳㈳收㜹摦慡摡㤶㉢㠸っ搸㤸っ搴㕤ㄴ敢㠸㄰慣㜸㡣晦㜹敥㠸戹敡ㅢ㙥戰㘹㌰㤸戸㝤戰改㐹㠶㐴㜲收慣攵〶㜸㡤挴㈲换愳㘶㘹挳扢㠶㔸㙤捤㜱捦ㅢ㥢㐱㑦㘰㠵㐴慦㤲㐴㡤㤶搵戲㔹慤㤰㉤㜴㡢ㅦㅥ挸㌳㤹ㄳ昸敤㘷㈶㜱㤵挹搱㕦㥥愲扤㘹搷㐷昱ㄹ摡改㥣搳㌰㈲㐷昵捡扥㔴㈹㑣㑥搵㥦㘵㥦㌳挸ㄶ捦㕦㕥㙣㐴攵㍥㑥戴㍡㐷〷㝦㡡㠸㤷㔴㔱㡦㠱搰㍤㜷㐰㔱ち敢㐸㌸㘰㐰㈰㥣㑦慤搴㌷㘸㑡ㄸㄲ摦㠱㐶㜱〱㐱愴㘱昳愲戱㈶㙣㠴愲ㅤ㈳㍣愰ㅥ㘸挵㍡㠶ㅤ㐴㙤㜳㥥攳ㄸ愴㉣㔲㘵愹㘲㤰㠰㘷㙡愱户㘴戹扡㠹㑣㤲㕦㔴㘵㕣㐷㤵㜱㕤㔶つ㥢㤷ㄸㄵ㤴㘵㡥攵慤ㅢ扥ㄵ㙥㌸㔶愵挰〷㐶敥㝡㠲㈴挱攳ㄴ扣㜱㡡㐵挶㘴㡢㌱㝦ㄹㄶ㕢㔰〴戶㡢㄰愳摣㍡㘲ㅦ㠴㥢搵昲昸搱扡昴㉢㐱扥㐸㈷愹晥ㅣ㐶换挹㙢ㄱ㤰㌸㌲摤㡡㉦㕦摣扡㠱ㅡ攵㤶㈳搶㔳㐸〴づ挱㠴㡣愷㜷㍢㙦㕥㜶慤㄰搸㈳挶ㄶ慣㜰㍥〰捡㤱愱㈸㑦户昷㑡慣㈶㍡㑤搵㤵挲㠳敤㑤㑤㕡攲㘸㝢㝢㔲㙤㍣扡㐳戳㔲㈸〹㍤戲ㅢ㤰㔴㉣㍢捣戱㤷㌴㡤㈶昵㜶慣㙣戴㌴慦㘹㘳摦㈹㐴㍥㠶㕥㤲㌴㤳搱捦㑡㐲㐱㡣㤷搴〱ㄵ㐵㜷㝤㍡㜹㈴㠲㌵㌴〱〶愹愶㔴摤㐸ㄴつ㕣挴㡤㤳慡ㄸ㡣㥥挰摦〷愲攲㜲㉤㙣㙡㌱慥㡦㐷㉤㌳戶扤散挲㐸愸ㄸ㝥戵㐷㔸ㅡ㙢㔳ち㐶㜲㘷户捡㕦㙤㙦㠲ㄱ㈳㌶㘴㐴㈴挵つっ㌶〴㜳㈵㠲愹㌴捥㐶戸搵昵敡〲㥦㤶㠴攱㑡っ㤴挲敡扣搸㤲㔶㔸挳㤰ㅦ㤷ㅤ敡㠷㐵㈹㐷㜵㜳㘶㉤㠰㐶て㈹挷愳㤲㘴㜰摤扣㐴慦ㄴ敥㉦㐰散㐶愵㤵㑡㠸愸㙥㝤〰ㅥっ㝡〷㍢搸ㄱㄵ㌵愱㜱㐶〹㥡㑦㈱摣收㐵㤰㜷扡挴㈸〴愹㈹搳扦捥㘹㙦晦㠸改㤷攷㌲㜱㈱㘲㈲㐶扡㔲㡣〷㈰㌷ㄹ㤴㈴ㄷ㡤挷戱㜲㈵搹愴搰ㅡ㡥敢㘸㘱㡣搰攲昳㐳㕣攰㘱ㄸ㙢㤴㙣㘳攳㠲㕢㘸㐱㥢摡摢〷捣㐵户㘲搷慡㐲慡攲㔸㔶㑢㡤摣ㄳ昸㤲㜷晦ㄴ㌷愵散㑢戴㈹㡢㌸㐹㜱挹㐴㔲昷㘶户晥㌹㜴㤷㐲づ㘳㈸搹挶搸㘳㡡㔷㑥挶挲摡慥㈸搰㍣㍣搸戸扢㈰敦捤㐱愴戵㔵㔱㤶㕤挴㔵扣㝡〰㔹㜲㕢〲散愲㜷搱愳挹㥥愸扡㘰愹慡㥥挰ㄱ搶愹〴㕥㍥て㘳愴㑢敥攰㈰㤹㕢㔱㘰昷搶つ昹㤸戹㜵㉥㌲㍥㌴㠶㜷㜹〸捡㘰㔷挱㐸戴户戳つ愳㕢㘳攰㤷㠶户晥㍣㌲㡤ㄱ㘰ㅡ戴㠰㔴〶捥㉣捡扢ㅢ㌸㡣㐵愶〴㐷㤳㜱㔴㠶㈸挷攱慦〷搲挰㑤㍣㐷慦㝡㔰㐲攱㠴扣ㄳㄶ㕦㑢㥣㜲㜰〲昲晣挳㉤㤵㉢㐶㠸㥢㉦敥㤱㤶敡㤹㙡㤵收㉥摣㜳㍤㠱㔵摣摡㔰收攸㐴换㝤㉣戹㈶摡㜷㡦戴㌴㐴昷〴㑦捣ㄷ㉦ㄸ㘱㘵愳ㄴ㙥慢㍢㕢摤㤲㐴敥て㜰㐷散昸㜶摡捣晤㉥敦愰㙥㜱敦〷慦扡摥㌵㔷捥㉢ㄷ昰挲ㅦ慤㔸㝤㘰㠰㤳ㅣ捣㝣㠴ㅦ㤹戲㤹摣敦㌱攲㕥愶捤〱ㅡ晥ㄱ㡥㈳㤳㤲〶㤳㈸愷搰〹㙣昷晡㠵〱搲挹㐴ぢ㥤㐸㐱戰㑦㈸敥晡㈷㐶㈸摡敦㠰㔶ㄲ㡢㍡㤱㘳捦摦〱敢㙢扦㐵つㄱ㡥攷㐸㡣攴ㅥ㐲㈹〵㜵㔲㤰㐷户㍢㜸ㄷ攴晦〷㑢㌱㌷敦挸㑥晦〵㘶搶摥㙦㐵搱㔱愲攸扤㜶ㄴ㌱づ㝢㕢ㄱ㙦捥㝥晦愸昹愹摦敡晤ㅦㅥ㌵㍦てっ㌳㐹㙢っ㌱㌵挶攲敢挶㐰戶捤ㄸ㜸っ捤搲ㄸ㜸㤱㝤ㄸ慥㔷挶㐰攴敤㔸㐲挵敥挶〰㠳㜸㈹㈶㕦㈲愶㥡㜰㘰昰慣㜵搸愱㈷散〲㙥搷㡡〰㠱㝢愸愷㘰づ扥愷扢摢慢㔷っ摦㜰㡥挸晡昳扥㠰摡昲㔷㜱㕤㕢㜶㘱㡦㝢㜷㙣㤱㥤㜶昰㑡挴敥昴㝤捦挹摥㉥愹〳㔳㉡㈹㍦扤㔶搰昲ㅦ挳㈷愲昱㠴㤰㜹㜳攲㔷攷晦昶挶㕢攷㜸㉤㉤愲搵ㅣ攳挰摤挴收㘹㌹㈰㝡㥢戸ㄱ㜲㠸㕦摦㉣攱㌳㈴㙢搳ㄶ戳㠶㉦敤㥤㐰㜷攲愲㈲扣〴㘱㉡攲敢〵㘳ㄲㄷㅣ㤴㌱㔹㙣㜱㙣捡慦㤷愴㌳戰㤸㤸戸昴摥挵昱㐱慤愳捡敡搲慥捣晤ㅡ㑡攷㌶㈷搲㙣て昲㝣挹愴㘹敦戶㙡戵搳搴㙡搲㑣搴愶〰ㄱ㑢㈹〴ㅡ㐸㈱挹㈳ぢ㈳晦㔲㑡慤愰㤰㉢㈲㑢〹愱戵挶㜲㜹昲摦ㄷ〲愲㝥扢慦换㉦㔵戰㡢挰㘲散㜵敦昶散㑡慢㌳㔶㑤㡣挹捡搳挷换㈸挸㘳ち㉢ㄸ愴㤵戵㤷㔰㠸㔳敥㌸㑡㝢㜶㍣昱㈵㈳㡥㡡戰㈹挶捥㌹昴慡つ㍡㉦戸㌵㕣昱㠰㥥挹㑢㠵攱ㅥ㘴㌵㡥㥥㌲ㄸ愷㐰〷㔵ㄵ昳㔱㔵慣㜷ㅡ㡡㥡愰戳摣㈳㌸㝦㈲捡挷捦㠱搸㍥搵ㄸ晡㔰㙢ぢ㜵㥣㍢㠰〵昲ㄷ昶搷搱ㄴ挶挶㕢挹㌱㤰戰㝢㠲㉡愸㍢攰㈵㜴㤱昶扣愶㌷㡡㝣㤷愶㌱ㄸㅤ㜳㔶㕦扢晥㘷㤸㕡㜲搶㉡愱ㄹ慦㙥搲晦㔷㔰戱慢晥搷ㄸ㘴㤳㈸㝢㈵㉡昰㈱挷㐸挹慥挱ㄹ敥〸㝣搸〸搳挸㈳戰㉥㡢㡣㙤慢㔲〹摦愷慡㘶㈹挱攱攱敡㙦扤〳㔱敦㑢摢㜶愸愳〰㘴ㄴ㈸昷ぢ㠸愰㡥晤㌹改昶㜳㙣晥ぢ愸㥥㔸戲㉡扥ㄷ㜸㘶㌸㔹㐲㜴㜷㤲ㅦ㤸㤹戰㜹㘶戴㜷㕡㠵摡㈳搸㠹攱㔷搱㘷㘹ㄹ〲晢㈵ㄱ㝥㐲㐱㐷㠶㄰昶ㄶ戲攰户㐶㘳㠹㌸ㄲ㤵㐳㜰㤷昹㜲捤戰昱㜹敡㌲㥣㥡㈱慢㝡㐲搷㈹搷㜲敢㑤っ敥ㅣ敥㘲扤〸挷㡦戰㡢㠸㠲挹㈵扣晡ㅡ户戵㜵て㥡㘱愳戵〵㠴散捥戹㌶㤸晢㌹㔰扡户户㌴㔳っ摦挹慦㡥㤵攳㠳㡥搱扤㝢㘱㌹搲㌸㐸㍣晡㕣㥢摥慥㈹ㅢ㍥戲㍤㐴戸㕦㐳㔷敤㜹㘶昸搵扦ㄸㄵ昸愰搱㤵昷ㅣぢ㍦挳㤲㐸晢㈸㘷昲㕦㐲搶㤹愰㝦ち戰㈶昷〰〹㕡攳愹㠲ㄴ㌸愸晤〴敤摣愱晡㑡㌵㜹㜲㐰㥢㕥㐱ㄶ㈷㡤㈷〷昹敥ㅦ〳戸晥㙥㠱摡捥敦㝥㝢挷㜷㔳攷换戵㈵挷ㅦ㡢㜵㠶扥㠱㘶摤㘲昶㍡戳慢挸挶㘲搵㌱㑡㘹㐸ㄱ㤳㔷戱㠳昷捦愱㡣昴攷攸敦㠷攷㍥昸㈳搳㍦捦㘹㔲晥愱愹㜹ㄵ㤴㝦㜲ㄵ摦㑦慥挲㐵㙤攷㔵㝣㙦愷㔵㡣㔱㌴㜲㈶晡㈶戲㤱㍥㑤愲㡤捦㑤慢㈲晡㈴㤴㉦愱挶攲挶ㅣ㔷㤹昲㔵㡥戴㜹㜸㡢㤱㥥㤸扣㜲愵收㤵愶㉢㌸㤱て戵㈷ㄸ㍥昲㝥㜷ㄴ搳昹㉥攳昳摡㜷攳㕤扦㜰㈱晥攴㈹ㅢ㐵㡣㠰㜵㘵㘵㤲㑡戸㤱摡㜷㘲攰㜷㝦搳㜰㜸愲〱〹愴愱㠰㐹㑤ㄲ昸摢㌱昰〹㝣㑥㈵㘱㌲㡣晦㌳㝤ㄸ〳㤳敡㈴昰户㘲攰㝦㥣㌸㔲〷㡥㠹㉣ㄲつ愴㠰ㄴ晢㔵㕡昴㠹㑦慢㜹㔰捥㤹搴㠹㐳愶慡愶㌸㤴㠱㕦㕢㙡挵㘱㕣攵昰昱㜱昳㐵㕣㑣挲〵づ㐸㑥昵㝦ㅣ㉣攲挲搲扣ㄱㅡ昸㜶㜹ぢ愱㘲㕦㤷㑦散㥣㌷㤷㝤㔴っ㤸㡢〱捥㐹搵㥥㈲ㄱ愸昸㝥戵扦扢戸搴㔳捣挱挶㝥挴㈱慥㉣㙦㠰㜴愷ㄱ㘴㔸愴㕦晢㐶㡣搹捣捤〶捤攸摢㐰づ扣㉣挸㔹ㄸ㔴㈱㤴〹㍥㘸㘴㘱愲㍡晦㈶戲搱昸㍦㤱㤸摣㤲㙥㡥慣昶㔶㍣㕥㤲㔲昴慦戰挳㔷㤱昵挱扦慡㐵㜴搶㌴㙥㡥慦摣昳摡㌹戳㉥ㄵ换㑤㜴搵㌸ㅦ扥㔰晦ㅡ㥦㙥㌲攳㔳㉣㤷㔰捥㘸戲愹戵㜶攸㍦㌲攴捥㈰ | B27: 㜸〱敤㕣换㜳ㅣ㐷ㄹ摦㔹㘹㔷㍢㉢挹㜲㉣搹㠹昳㜰㤴㌸〹〹㜲㙤攴㔷ㅥㄵ㡣愳㠷㘵㡢㔸㤱攲㤵㥤愲㐲㔸㐶扢㍤搲挴昳㄰㌳戳戲㤵ㄴ㈴㔴攵㤰㈲㜰㐸㜱㈲㐵㐱㐱㔱㈹戸㔰ㄵづㄴ攱昱ㅦ㄰㉡ㄷ戸㐱㠵ぢㄷ㈸捡㔵㥣㜲ち扦㕦昷捣敥散慥㜶㈴㙦ㄲ㤰㈹戵慣㔶㑦昷搷㍤摤晤㍤晢晢㝡㥣搱㌲㤹捣挷㐸晣换搴捦挲摤攵捤㈰ㄴ㑥㘹挶戳㙤㔱つ㉤捦つ㑡㔳扥㙦㙣㕥戴㠲戰て〰昹㡡㠵昶㈰㔷〹慣㤷㐵愱戲㈱晣〰㐰戹㑣愶㔰搰戳㘸攷㈰晣摤ㅦ㍦攸散㌵搴㡦慣㍣㌳扤戸昲ㄲ㐶㉤㠷㥥㉦㡥㡤㕦㔱㝤捦㍣㕥㍡㔹㍡㍥㌹昹㔸㘹昲搸昸㑣摤づ敢扥㌸攳㡡㝡攸ㅢ昶戱昱愵晡㡡㙤㔵㥦ㄱ㥢换摥㔵攱㥥ㄱ㉢㤳㈷㔷㡣㔳㑦ㅣ㍦㜵晡戴昹攴㤳㑦っ攱捤㤹㠵㤹改㈵㕦㤸挱愷㌳㘴㡥ㄳ㍥㌵㉢慡ㄶ㔷㈶㠴㙦戹慢愵㤹㘹晣㑢捣ㅥ㑦㡦㤷捡㙢㐲㠴㝣戳昰㠵㕢ㄵ㠱㡥㡥㠳捥㔴㄰搴㥤㜵㙥㥤敥捣㘱愱㔵㈳〸㜳捥㡣戰㙤摤㠹㐷㉤㌸㡢搸㌹摢搸ㅣ㜲捡挲つ慣搰摡戰挲捤扣戳㡣㠱㙡挳捥攵㐰㕣㌲摣㔵昱慣攱㠸㥣㜳扥㙥搵晡㔵捡昴㝤㉥ㅥ㈲㌹㌱戹晡搲㔴攰捣慣ㄹ扥㥣㔱挰㝤㐹㠱㥤昳慢慤戰㐷扢㡦换愹换㌷㜰捣〷扢挳愱攵㡡攱㌷㈰㈷扡㐳㐶㡢㙦㥤挱愳摤攱ㄳ㝢搴摡攷㤱敥㝤攴㔶戶㐲㙢㠳ㄱ㜵换ㅤ挵㘲昴㍣戳〱㘶〵㘶㐴愰㕥㘴㌶挸㙣〸㤹搶晦㙦昰㐸戲㈳㥢戲ㄵ㈳㕢㔹挹㔶慡搹㑡㉤㕢ㄱ搹㡡㤹慤慣㘶㉢㙢搹㡡㤵慤扣㤴慤㕣〵㑣㥣ち〳〳搹㈸晤昵㑦挷摥晣挲㑦扥昲昴ㅢㅦ㥣晢攸愳户〶摤愱㝤〰㝡㉥㥡搴慣㙦㕣〳愹㌵㠹昸㐴㘹㤲㍦摢㌳〵㜸挲㍣㙤㍥㙥ㅥ㍦㕥㍢㍤㘹㥣㌴㜲㕣㔶ち昲㕢〸㘵㍦㘰㠷捣攷㉤户收㕤㤳戸扢㝢摡〸㐴㜳攳㈶愲戶㘹慦敥搶㠲扢戶㙥㉣㠷㐶㈸敥㙣㙦㙢づ搲搱慤っ戶ㄲ㠱㝣摦㤱昶㙥㔷っ扢㉥愶慥㕢慡昹㥥戶㘶㘷挹昷㔶扡户捥昹攲敢㡤搶㡥ㄹ㑤㐱愴㙤挸戱㍢㔶愹㥡搴扣挶㘷搶扣㐰戸㜲㝡ㄳ捥㤲㔵扤㉡晣戲愰㐰ㄴ㌵戹搴㠳㙣㡡戸㝥㘲搱挵㐲挱慤戵晢㤳戵收戹敢㈱㤸㔹搴㌰摦㜵攱㠷㥢换挶㡡㉤づ戵㠰愸㜷愲攱㜰㑢昵㥣㔷慤〷㌳㥥ㅢ晡㥥摤摡㌲㔵摢㌰㈰㘹㙡ぢ㕥㑤昴昷㘷愴㔰㠰戸敤敢搳戴捣攷扢昳㠲㐴㐴〲挵㘴攴㍢㕡挹慥㜴〹慢挳㉡㙣㐱㥡捣㍥戰捤㘰㥣慦㤴㌱㈹ㅣ㤸㔸ㄳ戵〷㕦晡昰㌶挳㌶㌰昷搹〲㘷戳愳搱敡捦㙤〸㌷扣㘰戸㌵㕢昸愹扡㑦攳㡣昴ㄱ㘴戹ㅢ㄰〸㕤㜷㡦㡡㑥扢慥㙤收慥㔹戵㜰㉤扦㈶慣搵戵㄰㜵搰㡦㠵〲户戶㈳改户愱㑡㍦挰㙣ㄴ㔹戱㤸挹㡦ㄱ㈸㕦㐴捡攴㈸㥤㔲㜸戹㐵㤰戳㕦ぢ㉦て㤹㜳㤶ㅤち㈵㤴㐷㑣㘰㐴㘹㌵㠹扥㘱㤲愸㙦㔴㤵挲ㄸ㌳㘷㐰愵㠶攵㠶㥢㑤扥敤攰ㄲ㐵㐴㝢戲㘰搷挹〲㡡㠲㔶㜹㤰挲㙢㈰㥡㌶㘹㤰づ㥣㈰㈲戲㐱㡡㘶挷挸慤㐴㐶昸ㄴㄹ〱昸㈴ㄱㄲ㝡戲扢㡣㈰戱㜷ㄲ㈹㍢㜵攵挷㍤㘹戶㤵㈵慦愴搹㐱㙣㥣㝥㠸搹敤捣敥㘰㜶ㄸ㤹昶㜷㐸㌸㑡㌹㤴㕢㤳㝥ㄷ㥥昵扢㤹摤㠳っ昲㐹愷捣㠹㐴ㄵ㙤愸㥤搸㤱㠴ㅢ㠶㥤㉣㡤㘲㈵㡡㘸ㄹ㌷散捣㘱㐷㈲㍡戲㍡㜷㠷慥敤㤷㍡昶愱敥戴㤹㕣づ㈹㌲〵㌴戹搶㙤㐰㤳ㅢ㐱搰ㅥ昵搶扤攸慡㡦㌳扢て㤹㔲㉣㌴㜶㜷㘶捤搳㥣扣㈵㑣㈲㘵〸昵愸摣㈳㈲愶昹㥦㈲攰㍡㡥㉥㝢昶㌳㑤挱〹昳㤶户㥦㡦㜵攷敤〸改㙤㍡㜳㑦攷搰㔳㜴㤳ㄶ昴晤㘰㉦敤㉦㕤昵换〳㘸搶ㅦ㘴昶㄰戲㌶晤挲㤳昷捤㝡〹愴㐹散㈴㌰㜷㠰ㅥㄷ㘹攱㉥㙦慥ぢ愹㝤㠶捣㘵挳㕦ㄵ㈱扣ㄷ昳戳戰㠳㍤摦ㄷ㌶づ戴㌵㔹挱戳换敤慤㤵挱㥣敦㌹慣摦戳㡦㠳㕢㐲㌱昴昷㘷晢㌲㙤昶㜱㡡㥤㤹昰㌷㈵㈸㠷晡昷㘴㜷㈱㤱攸搴㑡㕥散㤷㝥戶摣㤳㈴㍤㐸㤲㠷戱慤晡㈳挸㈰㈵戴㍦㜷㤵㈸ㄳ〴㍢㈶挱㕡慤㔵㝡昷㔲㑥㈶㙤晥挳づ㌹㌲愸㥣戵搳昰ㅤ〴挳㑥搹㜲ㅡ挲㘲搰㔹ㄲ㝥ㄵ㝥〵换ㄶ㐵攵㤲愵愸搹㤳ㄵ户㠸慣攸敢敢㌸㑢愷昸搶㈴㥤戴㐹㠹㔴㙥㑦㙤㑣㌹㠷㌷㠹㡡㉥㐸ち㤵ㄴ户㔰㐳〲㤱昲〸扢㈷㘲㝡㄰㌱㈵㙣㥣晥㈸戳㐹㘶挷㤱攵晥〸㐹戳搳㡤㘷㈰㙣㘰㠳敥散㑡㈵㔳㈰ㅡ愴㝢昰晤慥挲敡ㄴ㕦㜳㥡搹㘳挸摡捣ㅦ㍡ㅦ㔳〸㔱愲㍣㐱㠸戴㤶㜴昳㡡㈵慥㤱〶昶㤹〸㉡捤搴㠳搰㜳ㄸ㔵ㅡ㌶㘷扤㘷扤㜰搶ち搶ㄱ㠵ㅡ㌵愳挲昳㙢挲〵㜵昹戰㝤摡敡扣昵㜵㔱搳捤戲㔷㠷㘸㥢㥦摤つ㠷㜲慣て戶愴㍣㤷㘷㌵愴摥捥挶ㄸ㐲㤳㈷㘲昸㕡改㠹摤㤱攷㥢㠷扥㤱收㡥㉥㕢愱㉤〶㑤挵㜴㉣ㄷ㑣散㈲愲〶戵〱㜳㜹捤ㄷ㘲㜶搸㍣敦㕢㌵摢㜲〵㤱〱ㅢ㤳㠱扡㡢㘲ㄵㄱ㠲㈵㡦昱㍦捦ㅤ㌶㤷㝤挳つ搶つ〶ㄳ㌷て戴㍣挹㤰㐸捥㥣戶摣〰慦㤱㔸㘴㜹挴㉣慦㜹搷㄰慢慤㍢敥㜹㘳㍤搸ㄵ㔸㈱搱慢㈴㔱愳㘵戵㙣㔶㉢㘴ぢ扤攲㠷〷昲㑣收〴㝥晢㤹㐹㕣㘵㜲昴㤷愷㘸㙦摡昵㔱㝣㠶㜶㍡攷㌴㠴挸㔱愳戲㉦㔵ち㤳㔳昵㈷搸攷㐹㘴昳攷㉦捦㌷愳㜲㥦㈴㕡㥤愳㠳㍦㐵挴㑢慡㘸挴㐰攸㥥摢愷㈸㠵㜵㈴ㅣ㌰㈰㄰捥愷㜶敡㉢㥡ㄲ㠶挴户慦㔹㥣㐳㄰㘹挸扣㘸慣〸ㅢ愱㘸挷〸昷愹〷㕡戱㡥㘱〷㔱摢㡣攷㌸〶㈹㡢㔴㔹慥ㅡ㈴攰愹㝡攸㉤㔸慥㙥㈲㤳攴ㄷ㔵ㄹ搷㔱㘵㕣㤷㔵㐳收㈵㐶〵㘵㤹㘳㜹慢㠶㙦㠵㙢㡥㔵㉤昰㠱㤱扢㕤㐱㤲攰㜱ち摥㌸挵㈲㘳扣捤㤸扦っ㡢㉤㈸〱摢㈵㠸㔱㙥ㅤ戱て挲捤㙡㜹晣㘸㍤晡㤵㈰㕦愴㤳㔴㝦ち愳攵攴戵〸㐸ㅣ㤹㙥挴㤷㉦㙥扣㡡ㅡ攵㤶㈳搶㔳㐸〴づ挱㠴㡣愷㜷㍢㙦㕥㜶慤㄰搸㈳挶收慣㜰㌶〰捡㤱愱㈸㑦户㜷㑡慣㈶㍡㑤㌴㤴挲扤㥤㑤㉤㕡攲㐸㘷㝢㔲㙤㍣戰㐵戳㔲㈸〹㍤戲ㅤ㤰㔴㉣㕢捣㜱㌷㘹ㅡ㑤敡敤㔸搹㘸㘹㕥搳收扥㔳㠸㝣〲扤㈴㘹㈶愳㥦㤱㠴㠲ㄸ㉦愹〳㉡㡡敥晡㜴昲㐸〴㙢㘸〲ㄴ愹愶㔴摤㜰ㄴつ㥣挷㡤㤳㥡㈸㐶㑦攰敦㝤㔱㜱戱ㅥ戶戴ㄸ搷㐷愳㤶㈹摢㕥㜴㘱㈴㔴つ扦戶㑢㔸ㅡ㙢㔳ち㐶㜲㘷慦捡㕦㙤㙦㠲ㄱ㈳㌶㘴㐴㈴挵つっ㌶〴㜳㈵㠲愹㌴捥㠶戹搵㡤敡〲㥦ㄶ㠴攱㑡っ㤴挳摡慣搸㤰㔶㔸搳㤰ㅦ㤵ㅤㅡ㠷㐵㈹㐷㜵㜳㙡㈵㠰㐶て㈹挷愳㤲㘴㜰摤扣㐴慦ㄴ敥㉦㐰散㐶愵愵㙡㠸愸㙥㘳〰ㅥっ㜶て㜶戰㈳㉡㙡㐲攳㡣ㄲ㌴㥦㐲戸慤㡢㈰敦昴㠸㔱〸㔲㔳愶㝦㥤搵摥晥㍥搳捦捦㘶攲㐲挴㐴㡣㜴愵ㄸて㐰㙥㌲㈸㐹㉥ㅡ㡤㘳攵㑡戲㐹愱㌵ㄴ搷搱挲ㄸ愶挵攷㠷戸挰挳㌰搶〸搹挶挶〵户搰㠲㌶戵㌷昷㤹昳㙥搵慥搷㠴㔴挵戱慣㤶ㅡ㜹㔷攰㑢摥晤㔳摣㤴戲㉦搱愶捣攳㈴挵㈵ㄳ㐹扤㥢摤晡ㄷ搱㕤ち㌹㡣愱㘴ㅢ㘳㡦㈹㕥㌹ㄹぢ敢戸愲㐰昳昰㐰昳敥㠲扣㌷〷㤱搶㔱㐵㔹㜶ㄱ㔷昱ㅡ〱㘴挹㙤〹戰㡢摥㐵㡦㈶㝢愲敡㠲愵慡㜶〵㡥戰㑥㈵昰昲㜹ㄸ㈳㍤㜲〷〷挹摣㠸〲扢㌷㕥㤵㡦㤹ㅢ㘷㈳攳㐳㘳㜸㤷㠷愰っ㜶ㄵ㡣㐴㝢㍢摢㌴扡㌵〶㝥㘹㜸敢㑦㈳搳ㄸ〱愶㐱ぢ㐸㘵攰㑣愳扣扤㠱挳㔸㘴㑡㜰㌴ㄹ㐷㘵㠸㜲ㄴ晥㝡㈰つ摣挴㜳昴戲〷㈵ㄴ㡥挹㍢㘱昱戵挴〹〷㈷㈰捦㍦搴㔶戹㘴㠴戸昹攲ㅥ㙥慢㥥慡搵㘸敥挲㍤户㉢戰㡡㕢ㅢ捡ㅣㅤ㙢扢㡦㈵搷㐴晢敥㘸㕢㐳㜴㑦昰挴㙣改㠲ㄱ㔶搷捡攱愶扡戳搵㉢㐹攴㝥て㜷挴㤶㙦愷捤摣敦昲づ敡〶昷扥㜸搵昵慥戹㜲㕥戹㠰ㄷ晥㘸挵敡〳〳㥣㘴㌱昳㌱㝥㘴捡㘶㜲扦挳㠸㍢㤹㌶〷㘸晡㐷㌸㡥㑣㑡ㅡ㡣愳㥣㐲㈷戰摤ㅢㄷ〶㐸㈷㘳㙤㜴㈲〵挱ㅥ愱戸慢㥦ㅡ愱㘸扦〵㕡㐹㉣敡㐴㡥㍤㝦〷慣慦晤〶㌵㐴㌸㥥㈳㌱㤲扢て愵ㄴ搴㐹㐱ㅥ摤敥攰㕤㤰晦ㅦ㉣挵摣扣㈵㍢晤ㄷ㤸㔹㝢慦ㅤ㐵㐷㠸愲㕦㜷愲㠸㜱搸㥢㡡㜸㜳昶㝢㐷捤捦晣㔶敦晦昰愸昹㈵㘰㤸㐹㕡㘳㠸愹㌱ㄶ摦㌰〶戲ㅤ挶挰㠳㘸㤶挶挰㌳散挳㜰扤㌲〶㈲㙦挷〲㉡戶㌷〶ㄸ挴㑢㌱昹ㄲ㌱搵㠴〳㠳㘷慤㐳づ㍤㘱ㄷ㜰扢㔶〴〸摣㐳㍤〵㌳昰㍤摤摥㔹扤㘴昸㠶㜳㔸搶㥦昷〵搴㤶扦㡣敢摡戲ぢ㝢摣戹㘵㡢散戴㠵㔷㈲㜶愷敦㜹㑥㜶㜶㐹ㅤ㤸㔲㐹昹改戵㠲㤶晦〴㍥ㄱ㡤㈷㠴捣㉢㘳扦㌸晦户㤷㕦㍦换㙢㘹ㄱ慤收ㄸ〷敥㈵㌶㑦换〱搱摢挴㡤㤰㠳晣晡㘶〱㥦㈱㔹敢戶㤸㌶㝣㘹敦〴扡ㄳㄷㄵ攱㈵〸㔳ㄱ摦㙥㌰㈶㜱挱㐱ㄹ㤳愵㌶挷愶晣㝡㐹㍡〳㑢㠹㠹㑢敦㕤ㅣㅦ搴扡慡慣ㅥ敤捡摣㉦愱㜴㙥㜲㈲慤昶㈰捦㤷㑣㥡昶㙥扢㔶㍢㑤慤㈶捤㐴㙤〲㄰戱㤴㐲愰㠱ㄴ㤲㍣戲㌰昲㉦愵搴ㄲち戹ㄲ戲㤴㄰㕡㝢㉣㤷㈷晦㍤㈱㈰ㅡ户晢㝡晣㔲〵扢〸㉣挶㕥昷㕥捦慥戴㍡㘳搵挴㤸慣㍣㝤㍣㠷㠲㍣愶戰㠲㐱㕡㔹㝢〹㠵㌸攵㡥愳戴㘳挷ㄳ㕦㌲散愸〸㥢㘲散㥣㐳慦㕡搱㌹攷搶㜱挵〳㝡㈶㉦ㄵ㠶㝢㠰搵㌸㝡捡㘰㥣〲㉤慡㉡收㈳慡搸攸㌴ㄸ㌵㐱㘷戹㠷㜱晥㐴㤴㡦㥦〳戱㝤愲㌹昴挱昶ㄶ敡㌸㜷〰ぢ攴㉦散慦㈳㈹㡣㡤户㤲㘳㈰㘱㜷〴㔵㔰㜷挰换攸㈲敤㜹㑤㙦ㄶ昹㉥㑤㘳㌰㍡收慣扥㑥晤捦㌰戵攴慣㘵㐲㌳㕥摤愲晦慦愰㘲㕢晤慦㌱挸㈶㔱昶㝣㔴攰㐳㡥㤱㤲㙤㠳㌳摣ㄱ昸戰ㄱ愶㤱㐷㘰㕤ㄶㄹ摢㔶愵㌲扥㑦㔵捤㔲㠲挳挳搵摦㝥〷愲搱㤷戶敤㘰㔷〱挸㈸㔰敥㘷㄰㐱㕤晢㜳搲㥤攷搸晣㤷㔱㍤戶㘰㔵㝤㉦昰捣㜰扣㡣攸敥㌸㍦㌰㌳㘱昳㑣㘹敦戴ぢ戵愳搸㠹愱ㄷ搰㘷㘱ㄱ〲晢㔹ㄱ㝥㑡㐱㐷㠶㄰㜶ㄶ戲攰户㐶晢ㄳ㜱㈴㉡㠷攰㌶昳戹扡㘱攳昳搴㐵㌸㌵㐳㔶敤ち㕤愷㕣换敤㌷㌱戸㜳戸㡢昵っㅣ㍦挲㉥㈱ち㈶㤷昰挲㡢摣搶昶㍤㘸㠵㡤搶ㄶ㄰戲㌷攷㕡㌱昷㔳愰㜴㘷㙦㘹愵ㄸ扥㤳㕦ㅤ㉢挷〷ㅤ愳㍢昷挲㜲愴㔱㤰㜸昴戹㌶扤㕤ㄳ㌶㝣㘴㍢㠸㜰扦㠸慥摡搳捣昰慢㝦㌵㉡昰㐱愳㉢敦㈹ㄶ㝥㡣㈵㤱昶㔱捥攴扦㠶慣㍢㐱晦〸㘰㉤敥〱ㄲ戴挶㔳〵㈹戰愸晤㄰敤摣愱挶㑡㌵㜹㜲㐰㥢㕥㐵ㄶ㈷㡤㈷〷昹敥ㅦ〰戸昱㙥㠱摡敥敦㝥㝢换㜷㔳攷换戵㈵挷摦ㅦ敢っ㝤つ捤扡挵散㈵㘶㔷㤱敤㡦㔵挷〸愵㈱㐵㑣㕥挵づ摥㍢㡢㌲搲〷搱摦て捦扥晦〷愶㝦㥥搵愴晣㐳㔳敢㉡㈸晦攴㉡扥㤷㕣㠵㡢摡敥慢㜸㙢慢㔵散愷㘸攴㑣昴㜵㘴挳㝤㥡㐴ㅢ㥦㕢㔶㐵昴㐹㈸㕦㐲敤㡦ㅢ㜳㕣㘵捡㔷㌹搲收攱㉤㐶㝡㘲昲捡㤵㥡㔷㥡慥攰㐴㍥搴㕤挱昰㤱昷扢慢㤸捥昷ㄸ㥦搷扥ㅢ敦晡㠵ぢ昱㈷㑦搹㈸㘲〴慣㉢㉢㤳㔴挲㡤搴扥ㄳ〳扦晢慢愶挳ㄳつ㐸㈰つ〵㑣㙡㤲挰㙦挶挰㈷昰㌹㤵㠴挹㌰晥捦昴㘱っ㑣慡㤳挰摦㡥㠱晦㜱攲㜰〳㌸㈶戲㐸㌴㤰〲㔲散㔷㘹搱㈷㍥慤收㐱㌹㘷㔲㈷づ㥡慡㥡攲㔰〶㝥㙤愹ㄵ㠷㜰㤵挳挷挷捤ㄷ㜱㌱〹ㄷ㌸㈰㌹搵晦㜱㌰㡦ぢ㑢戳㐶㘸攰摢攵つ㠴㡡㝤㕤㍥戱㜳摥㕣昴㔱㌱㘰捥〷㌸㈷搵㜶ㄵ㠹㐰挵昷慢晤摤挶愵㥥㘲づ㌶昷㈳づ㜱㘵㜹〳愴㌷㡤㈰挳㈲晤摡ㅢ㌱㘶㌳慦㌵㘹㐶摦〴㜲攰㘵㐱捥㐲㔱㠵㔰挶昸愰㤱㠵㠹敡晣㉢挸㐶攲晦㐴㘲㝣㐳扡㌹戲摡敢昱㜸㐹㑡搱扦挱づ摦㐴搶〷晦慡ㄶ搱㔹换戸㌹扥㜲挷㙢攷捣㝡㔴㉣慦愱慢挶昹昰㠵晡户昸昴ㅡ㌳㍥挵㜲〹攵㡣㈶㥢摡㙢〷晦〳搱攳捦挳 | C27: 㜸〱敤㝤〷㥣㕣㔵搹晥㥣摤㥤㥢扤㤳戲ㄳ㤲㔰㐲㠰㄰ㄲ〸㈶㠴改〵〸㥢捤愶㉤㘴㐹挸㠶ㄶ〲敢㤴㍢㘴挹㤶戰㌳㥢㠲㘰〲〶㤵㘲㐱愴㑡㔵㈹ち〶㍥愴㠳ち愱㠸㠰昴愲搲㐱〴㐵ㄱ昹㔴㍡昹㍦捦戹㘵捥摣戹戳㔹昸昸㝥ㅦ㍦㝦晦㐹收㥤㝢摥昳㍥敦㌹攷㍤扤摣戳㍥攱昳昹戶攰挳㕦㝥ㅡ昸㌰愱㘳㕤戱㘴昴捣㘸敤敢敥㌶㜲愵慥扥摥攲㡣㤶晥晥捣扡㠵㕤挵㔲㍤〴戴捥㉥昸ㄷ晤㥤挵慥攳㡤挶捥搵㐶㝦ㄱ㐲㝥㥦慦戱㔱慦㠳晦㈸敢ㅢ戴ㅤ㍡㔱㝡〳〹愴㝣扡㐶㌲㡣愴㤱㐴㈷〹㤰っ㈷ㄹ㐱㌲㤲㠴㡡昴㈶㤲㈰挸㠸搱㈰ㅤ慤戳ㄷ㘵㡦㐵戴㍡㑡㝤晤挶昴㠹㠷㥡㠱捦㑣捥㠸捥〸㠷㐲㠹ㄹ愱改ㄳ㕢〷扡㑢〳晤挶捣㕥㘳愰搴㥦改㥥㍥㜱昱㐰戶扢㉢㜷愰戱㙥㘹摦㑡愳㜷愶㤱つ㐵戳㤹㔸㉡ㅣ㡢挷ぢ改㜴㙡挴㌶㔰摣摥㍡㝢㜱扦㔱㈸㝥㑥㉡挷㔰攵愲搶搹㌳づ㌲㑡㥦㤳捡戱㔰㜹㔰敢散㌹㝤㍤㤹慥摥捦㐷愷㥦ㄹㄳ㥦㘳攴扡㤸㠳㠶搱摦搵㝢捣っ㐴扡挲挸㜰㈵㘷戴ㄴ㡢〳㍤慢㔸ㄸ㕡㡤敥敥㈵㐶㐱收㕣捦㥣㘲㘹㜱愶扦愷㌸愲㠷挶㌳晡㡤摥㥣㔱ㅣ搵㌳㜷㙤捥攸戶〴㡢㡤㍤㠷㘶晡て捡昴ㄸつ㝣㘸敡㌱昳慦㉤㙦昴㤶扡㑡敢㐶昶ㅣ㔲㌴㤶㘴㝡㡦㌱㈸攲敦㤹㍦搰㤵ㄷつつ昸敦慢摦挳㉢㘶㌲㤷㄰㥦㥥搶ㄵ㤹晥㤲㜴㌱晦挲㕥戲㑡㔱㤱愹愸㠸ㄷ㡢搳㐴ㄷ㡡㌹搶搱搵㜳愰搱摦㙢㜴㌳㄰收攳㌴㤷㤰㌴㤰㤹つ㡥愵散攴㌰㤳挴㜰慢〶㌱㉤っ㐵ㅢ〷㜲搴㐱㝤晤㍤㈸㡤ぢ晢㕡〷㑡㌳㐳搳ㄷ㜴挹摦ㄹ攱㜸㌴ㄲ㐹愷㘳㤱㐸㈴ㅡ㡢㈴攲㠹改敤㐶愶㜷㘶㘸㐶㈸㤹㐸㠴㘳改㘴ㄸ㥦㘴㌸ㅡ㐹㠵愷㜷㤴昲㜳㡣搵昰ぢ㈷㔲挹㔴㌴ㄹ㑡挵攸ㅢ㠹㈷昵㙤ㄱ㠴扥ㅤ〳摢ㅥ愴扥㍤㥣搶㜷㈰㙢㍣㠸㘸㜸つ㤵㕣㡤ㄵ㉢㕡㕤㘷愶慥㌳㕢搷㤹慢敢捣搷㜵ㅡ㜵㥤㠵扡捥㘳敡㍡㔷搴㜵㜶搵㜵ㅥ㕢搷戹ㄲ㌲昶愷㜱搸戰㍡敢昳搷昰㤳㉢㝦戲摤㔳ぢ捦摣㝣挶㍢㑢㔷扥扦㡢㘰扤㤶捤挲〴㍣㘸慤〳挵㔲㕦㡦扥ㄳ㥥昵㥤挹搸㠵摥敤攱戰㍥㤱慣㕤㐱㠴㜸〱搱㘱㤴ㄶ戶ㅣ㝦攳㐳㤳㑥㤸㜷㡢㙦捤〱扢晦改收搳〴㥢〷搹㔸㔰㤷㍥㤹㘴ち㠸戶㍢昹敤攱愸扥〷㔹㔳㐱㠴㜸挶㔲戲愰㙦晦㙦㙥㜳㙥㜶摥㐹ㄷ愷愷敥扣晣搱㜵㠲捤㡢㡣搰㤷昰搰㔹挳散愱㔸㉣㤱㡥㠷㤲攱㜴㍣ㅡ㑤㐵㈲昱㤴㘳㜷㘶㐴㌲ㅥ㡤愷㤱〱㘹㔸㌷㕤戶㝢㈸ㄲづ挵挳愹㄰っ㥦㡣挷愲挹㜸㐲㥦挶ㄸ㑤〷搱昶㘲戸敤攱㠴㍥㠳慣扤㐱㠴㜸搴㡡攴慡㤳㜶㍤敤晣晥て摡㙥扡户敥搸昴摣㐷㑦㄰㙣晥捡㈹㡤㄰ㄱ〵搱㘲攴户㠷㈳㝡㥣慣〴㠸㄰扦戱㤴ㄸ㝢ㅤ㈰㕥摤晦㉢〷晤搷晤昷㍣昱昶搳慦㥤㉢㔸〹换㑡搲㐴散〳愲敤㑢㝥㝢㌸愴敦㐷搶㑣㄰㈱㌶㕢㑡づ昸搵戲扡摤敡户㙢晦挵收攷㠶慦摣晢搶晢〴㥢㕦㘹慥㘶㍣搴㉣愵㤱㔸㥣敤㘵㈲㥣㡡㠵搲改㐴搲戱㔶〲戶㑢㐶㤲愹㔰㍡ㄲ㡡愵㔳搱㐸搹㕡攱㜰㍣ㅣ㑦挷㤳〹昸㐴攳愱㜴㔲㥦㠵㈰昴ㄶ㄰㙤㌶㐸㝤㝢㈴愴户㤲㌵〷㐴㠸摢慤㈸捥㤹ㅤ敥㑣慤ㅢ㍥敢攴㌵摡昳㉤搷㌵㥤㈸搸㌹㤴搳㌹㥦㠸〵㈰㕡ㅢ㐸愰㤸改㔹搵㙤攴昷㠹散愳ㅦ㐰㥦〳㐱㠴戸挱搲戵㘵搲摡㜷晢㈷㝣㘳搱㡦㡦戸晤慦昳㥥㝤攴㑡晦㜰㜸㐷扤㙡戴扢戱㤸㠷づ㈶㤷㈹㤶慣㜶㡣ㄹ昶昹㌶㜳㕢㙦攵收昵攷晥昷㕢㌹〴昲戹戴㜲㝡㍢慤㝦㄰㠸戶〸㘴攴㥣慥㘲慥㙦愰户㌴㜱㐹愶㘴攸㡢改㜹㌰㠸㄰㥢慣慣㔹㜹昸㤸戶㐹愳慦㕡戸㜱㑢㘴扢搲㐵㤱㥢〵㝢㝥㔹ㄲ㍢昰㔰戳攲㈶搰散㐵㤳㘸昹㐲昱㔸㉣㥥㡣㐵㥤愲ㄸ㡤挶㘳攱ㄴ捡㘱㍣㤲㡣㐴㔲㐹愵挱っ㐵㈲㠹㐸㌲ㅤ㡥愰㈵㡤㈷ㄲ搱㜴㔴㕦捡ㄸㅤ〲愲ㅤ捡㜰摢挳㐹晤㌰戲づ〷ㄱ攲㑡㉢㤲摦㍢攷摣戳昶晤㜰散〱搷搷昷㥦搸㜱敤㉤搷〹㡥㑣捡㘵昱㐸㈲㤶㠳㘸㐷㤱摦ㅥ㠹敡㐷㤳搵〹㈲挴愵㤶㤲㉢ㄶ㡣㕢昶搸㙥㌷捣扦昲摦㕦㝤晡㠷ㄳ晥㍣㕣㜰㘴㈳㔳㥡挱㐳捤㤴挶搰挴挴愲愱㘸㈸ㄲち挵搳搱㐸摣㐹㘹〴改㐸戲㜶㘱捣ㄳ㐹㈷ㄲ㑡愵ぢ㠵ㄳ挹㜸㍣ㅤ㑡㐶搹㝦㐴㔰昹昴㉣㘳㤴〳搱昲っ户㍤ㅣ搷つ戲ち㈰㐲㥣㙦㐵昲慣㥢て扡㙡㜷晦攳㡢㝥㤵㝤敤㤹㘵攷㍦㜵愵攰挸㑢㐶㜲〵ㅥ㙡㐶ㄲ㙤㘷㍡㥣㑣㐷搰㈳攱ㄳ㡦㤵晢㉦昴㑤戱㜸㉡㥤㐰ㅡ㔲㈹昸㐶换㉤㐳㈸挲晥㉣㠶㉣〱ㅢつ㐴㉡愵㜷㌱㐶挷㠲㘸㉢ㄹ㙥㝢㌸愵㜷㤳搵〳㈲挴昷慣㐸㍥搴㙡㌴晦㘸捡敤〷㕣㝣捣愴㙤㥢て㉡ㅤ㈱㌸㌲㉣㘷挷㉡㈲㡥〳搱晡㐱㠶㔹㑤㠳㕥㈴扢〴㈲挴改㤶愲㜹晢敥㍤㘶搳㔵㥤ぢ㌷扥㜲捤捣攷㈷㌵㍦㍤㘲㌵扣て戶㍡敥㌹晤㤹㌵ㄸち㤵〷㔹㤱ㄹ攸㡦㠷㌲戶挴搰戲㄰㉦㈴ぢ攱㜰㍥ㅥ捡㐴㌳㝥昶换㐳ㅤ挷挸㔱㙥攱戰慥摥㝣摦ㅡ㌹戰㤹㌰㍢㔳㌴捡㉤挰㌴换㙦㌶慡㔵扥戸愳户㘷㐷〹搵㙤扣摢慦慣愴ち搶㠱㘱㥦㔱㤴攱敤散㠶ㅤ㥡改ㅥ㌰㕡搶㜶㤹摥㍢戹扣㌱攸敢换搶昶㥤搷㙦ㅣ攷昸㔶挵愸〵㔳㡢搵㔲㜷㔵㉡㑤㉦㌳㕥ㄳ㕢㔷昴ㄵ㡤㕥ㄹ扤㘹㍤㡢扢㜲㉢㡤晥づ㠳ㄳㄳ㈳㉦㤳㍡㡥㕥搶挸㜳摡愲㕥㈴ㄴ㘳挹晣㈴㤵㕢㤸扢戶㘴昴收㡤㍣攲扢捡攸㉦慤㕢㥡挹㜶ㅢ摢㔶㠸㤸㘱挲㘳㠷ち昶扣扥摣㐰戱戵慦户搴摦搷㕤改搳㤲㕦㥤挱㘸㌷摦摥㤷㌷㌰㔸㙤攰挷㈷㝣昵昵㐲昸扥攴搵扦㔰㙦㜱㠶捣〸㈵㡢㌹㜶摤扥戲搸捤㔸㠲搴㈱ㄵ摤〶换㘴摤攴慤㈸㤳㝡愹㘶捦摡㠲㑡㥡㌸㡢愳昴搴摡搲㌲㡥㑥捥晤敦ち搷搵㡤戱㔲㍦㜷㌵㘶〴ぢ㌲扤昹㙥愳㝦搰㌹愸㘰㡣昴㌵㈰晥㙦愲㌶搷戴ㅥ〷愶㘲慤㔸攷㕦搳㤵㉦慤搰㔶ㄸ㕤挷慣㘰㈳㠰㜹㙡㘳㈳㑤㕢昵搱搷㠱愵ㅦ㑦昲ㄵ㤰㐰挰愷㥤㐰㈱㉤愰㥦㘸扡晤ㅣ㘲㝦晡戹〶㘷挲扡㥣摢㘰ㄶ㕡昴昷㘰㙣㔱慣慦昷㑡攵㠲㑣㜱㐵㠹挵㜳㔰㑦捥㉡昴慦㤲慣〷昱㜳愴扦搵愹っ㥢昳〶捥搸㐶昶捣㌱ちㄹ㑣㤲㘵敤ㄶㄹ㝦㡦㌹昵㥡㘳ㄴ㜳㍡攷㘸㙤愸㉢㙢㌵㍣愱昲㡦攸㘱改㌷搶㤶收㘴㑡㤹㘱㍤㤸敤㈱㤷㜴〸㑤㤳㈸昳㠹挸㤱㤲㘷愳〳㤶ぢㅡ㠲昲㔱搱㌲㕣㌲㑣㑤愸㌸愸㉦扥㝡㡢づ㥥〸挴㥤㈳ㄵ捤㕤搰㉢㘷㙤㤸㑣收攷ㅢ扤㑢搷慤㌲㡡ㄴ㙦搴〶㌵愵扢㝡㔱搹愲㕣昶㤰㔲㔷㜷㜱〶㘲㍡扦扦㙦㘰搵攷愹㠷扡昴つ㈰昶挷扦ㅥ愵㜸攸㘹㠲戹㝣挳㔶㌳㙦㍡㍢㝤㡤搴㐶㡥㜶㌲〸㝡捤戴捥ㄲぢ㠵㕢昰㈳㍦晡㐶晣〴㜴晡搷昰昳㜳㤲昸㘹㘶戹㥣愶㡤攸㠱㤵㤶昶ㅢ㜲摥摥㈸ㅤ戰昸挸㥥挳晡晡㔷㘶晢晡㔶戲㑣㡤㤲慥攲ち挳㈸㜱㉥㍣摣㥡晢换㌹扥㄰昵昵ㄵ㔳㔲㘵搲㍣ㄶ晡戵㙦㠲㡣㙣改敥㥥㘸㙢㉣㙡愷㠲㔵㡦㔹戹㜶ㅡㅥ戶㙢㍦㙣㔱攷挲搶搶捥㐸㈸ㅣ摡㉢ㄴ摢㉢ㅣ㤹戱戶扢搸㈳〶㤰㜸捥㉥㥦搹㜶搷扡晤戶㜴户㕥㔱摡㜷晡搱ㅦ扣戶㔹㤴㉣㡦慡㈹㉣㘷慢散愸昵㙦㠱㠸㝥㠸戱㘱挱㜳攵㐷晦づ摣晡㜷㐹捥〴㐱昳㈰つ㡡搶攱㉣搳㈹㌸攳㘵ぢ愱㝦㥦攴㙣㄰㌱ㄱ㐴捥挴捦挱㠳晤ㄱ㕤搰扦ㅥ㕦㤹㜵攷㠱㡤慣ぢ㔷㘷捦〵昰〹攸昴慦攱㈷㜶㠵ㅦ戳㑦愷戹㜴ㅡ㐸愷㜱㐴㈷㤴㝢ㅡ攱㘸换愳㙡敥㍤ㄹ㌰㘹㠴ㅦㄱ扦ㅣ㘲摥㐶戸㥣㘱㕣㐱㜲㈵㠸㘲㠴㥦㤸㑥挱ㄹ扢㌴挲㑦㈹㜴㌵㠸搸〳㐴ㅡ攱ㅡ㍣搸ㅦ搱㠱㌰搶攳㉢㡤戰〹㙣ㄸ㈱㕡㥤搰敢攰ㄳ搰改㕦挳㑦㑣㠵㥦㤷ㄱ摡愰摣搳〸ぢ㉣㡦慡戵㠳㘹搰㈴㡤㜰㉢ㅥ挴㍣㠸㜹ㅢ攱㜶挶收づ㤲㕦㠰㈸㐶昸㤵改ㄴ㕣ㄱ㤰㐶戸ㄳて晡㕤㈰㘲〶㠸㌴挲㘶㍣搸ㅦ㌱ㄳ㘱慣挷㔷ㅡ攱ㅥ戰㘱㠴㐴㜵㐲敦㠳㑦㐰愷㝦つ㍦戱㌷晣扣㡣㄰㠵㜲㑦㈳㐴㉣㡦慡戵㠹〸㌴㐹㈳㍣㠲〷ㄱ㠲㤸户ㄱㅥ㘳㙣ㅥ㈷㜹〲㐴㌱挲㔳愶㔳㐴昱㉢㡤昰㌴㠵㥥〱ㄱ㕣搶㤰㐶昸ㅤㅥ散㡦搸〳㘱慣挷㔷ㅡ攱て㘰挳〸㤱敡㠴㍥〷㥦㠰㑥晦ㅡ㝥㈲〱㍦㉦㈳散〴攵㥥㐶㤸㘰㜹㔴慤慤愴愱㐹ㅡ攱㌵㍣㠸昱㄰昳㌶挲敢㡣捤ㅢ㈴㝦〶㔱㡣昰愶改ㄴ晢攰㔷ㅡ攱慦ㄴ晡ㅢ㠸搸て㐴ㅡ攱㉤㍣搸ㅦ㌱ㅡ㘱慣挷㔷ㅡ攱㙤戰㘱㠴㔰㜵㐲摦㠱㑦㐰愷㝦つ㍦㌱ㄳ㝥㕥㐶ㄸ〶攵㥥㐶搰㉣㡦慡戵愱㔹搰㈴㡤昰㈱ㅥ㐴〳挴扣㡤昰㌱扣昵㑦㐸搸㙡㉡㐶㘰攷づ愷㘸〱㕢ㅡ愱づっ扤ㅥ㐴戴㠲㈵㡤㈰㜷ㅤ攰攰㐷㝣昸㠹㘲〴つ㜲㜲㤱愸慡㑦㙢㠴㑦㐰愷㝦戵ㄱ愴㥦㤸〳㙤㕥㐶昸〷〲昰㌴挲摢㤶㐷搵敡搳㝣㘸㤲㐶ㄸ捤㘸扦〵㌱㙦㈳㡣㘱㙣挶㤲㡣〳㔱㡣戰㥤改ㄴぢ愰㐸ㅡ㘱㝢ち敤〰㈲づ〰㑢ㅡ㘱㍣㕣昶㐷扣愶ㅡ㘱〲搱捡㈲㔷㤵㉤㜶愶㠰㑥戱㙡㕢㐸㍦㜱㈰㌴㝢搹攲搹㕡戶昸㠳攵㔱戵㝡搶づ㑤㠳㑣㘷㉢ㄶ慣搸㡢㡦㔰愷戳㈳ち昳扡扡㑢㐶扦㥣戱㌴ㄵ昰㘳㙥㍣㐸昷㐸捥搲晡㌳㌹㜳㐹㝦㙣愱ㄵㄳ㌵㙣㜴㤴搶㤵愷慥㔵ㄳ㐵㜳ㅥ昵晦愷挳㕦戸改戰㥣っ㔷㑣㠹〷㤹㙥愲搰戸㈶挴㠳ぢ㉢㠵㠸㌳㐱捦㠱慢㉣㔲㌳愰戹戲㤰㔱摥㍤搲㤶摢㌹㡥扣㕡〸㈹ㅤ慡㍤㑤㘶㘱慦㉥愴〴搵㥣㤲慥㠶攷晦㥦搰扢㌷㤵捤〹晤ㅥ㙣挰愶㤲散㐹昲㈵㤲㘹㈰攲挹㥡㉤敥㕥㤴㤹㐱戲㌷㐸戹挵つ戰换㌹〸戶㤶慤㙤㤸〲ㄱ㤰ㄱ㔱㤰昶〵㐶㌷ㄶ㠱㍥愷㡤㕥晦㘲㠴㌲昸慣ㄵ挵㠴㘵㘲摢㥥㡥㜵扤戹ㄵ晤㝤扤搸㌵攷㘴扡㈵㠷扤搲愲挸㘸㍤㜲㑢㔰敢㤱㍢㠲㈳㝡㤶ㄸ慢㡣㑣愹㤵㑢攷㈳㝢ㄶ㘲〳㐲捥挳摢昲㙢晦㉦攷改扥〶㈴〱换愷攸㡦敤〹扢扢㤲㥡㌳㘶换扡㌳收昴㘱搳摤㤰攷〶㘸㜵㑤挳㥡换ㄷ㜰㈲敥搳㘳㠸摤㈵晦昸改扥㔳㉥扡㜶㡢昵扢ㅥ攳ㅣ昹搱攲昰㜴㙤㘴㔴㜵扦㐹挸〴㜴㑡㔶㜷扦搲㑦ㅣっ搳㌹摤慦戶ㅦ㈴敢㔱㈸捣㜹摡收㕡㕤昰㕤㤶㐷搵㉥挹㔲ㄶ㈶㝣昵㔹㔰㈴㝥㔵戳㜲捣㘶㡣㕡㐹收㠰㤴㉢㠷㍥捦㜴ち敥㝤挸ち㌲㥦㐲ぢ㐰挴㘱㘰挹攱㐸ㅢ㕣昶㐷摣㠴㌰搶挳㈰攴㘹〷㠲㘲㘰㥡慣㑥㙣㍢㝣〲㍡晤㙢昸〹㙥慤㌸㠶㔰㈶慢搷搴㌲挲搵㤶㐷搵㉥っ昷㕤愴ㄱづ㐵㜰攲㈷㌵㡤㜰㌸㘳㜳〴挹㌲㄰挵〸换㑤愷㔸づ㐵搲〸㐷㔱攸㘸㄰挱つㅣ㘹㠴㑥戸散㡦戸㔴㌵㐲〶㍥㜲戳愷慡㌴攴攰ㄳ搰改㕦㙤〴改㈷㍡愱搲换〸攷搴㌲挲搹㤶㐷搵㉥㔲ㄶ㥡愴ㄱ扡ㄱ㥣㌸慢愶ㄱ㝡ㄹ㥢㍥㤲㔵㈰㡡ㄱ晡㑤愷挸㐱㤱㌴㐲㤱㐲㈵㄰㘱㠰㈵㡤㌰〰㤷晤ㄱ愷愹㐶㔸〳ㅦ㤴㠴㜸㜵㐲搷挱㈷愰搳扦㠶㥦攰搶㤳㤷ㄱ㌶搴㌲挲㝡换愳㙡㤷慡ぢ㥡愴ㄱ㑥㐶㜰攲挴㥡㐶搸挸搸㥣㐲昲㜵㄰挵〸摦㌴㥤攲㔸㈸㤲㐶㌸㤵㐲愷㠱〸㙥㐰㐹㈳㥣づ㤷晤ㄱ㈵搵〸摦㠲て㡣㤰慡㑥攸㜷攰ㄳ搰改㕦挳㑦昴㐰愵㤷ㄱ㡥慤㘵㠴㉥换愳㙡ㄷ㙣ㄵ㌴㐹㈳㥣㠷攰挴㌱㌵㡤㜰〱㘳昳〳㤲ぢ㐱ㄴ㈳㕣㙣㍡挵㜱㔰㈴㡤㜰〹㠵㉥〵ㄱ㐵戰愴ㄱ㉥㠳换晥㠸愳㔵㈳晣〸㍥捥㘶㕢㔵㤵戸ㅣ扥〱㥤㌲搵㠶㤰㝥愲〴戵㕥㠶㔸㕡换㄰ㅤ㤶㠷㝢ㄷ捦扦〶㥡㍥挵敥换㜰㠸敢㠵㐳扢㡣㌵㕣㉥ㅥ㔵挰㔹㈴昳〰ぢ㔷㉦㐷ㄶ收昴ㅤ搴㔷挲㍥昶慡敥捣扡㌱〵敢攱戰ㄵ㐶㉦㜶㥥晡戱〱攵攲昵慤㕡㘵攴昵㐲㐷摦㐰㝦捥㘸㥢昳㐵搸㤹㤲昹㠵㤵㔶昴摣㜵〲㥦捦戶搹㠲㔲㈰㔰㕡㌸慣昲慦㠳㑡昷㥡戹㌲㠴㉥捦搶㠲㄰㙣㉡㕢㜴㘹㔷愹摢ㄸ㕥㤰晥昲戹戱〰㉢㘲㍢㉦㍦慣戰㜴〵搶㤱攷㡣㉣捣敦敦捡㜷㜷昵ㅡ捣っ捣〰㜹挰㙢愱㜱っ戶敥ㄶ昷ㄵ扢㜸昸㙣㘴㘱㘹㝦愶户戸㡡扢㄰戹㜵摢㔴戸攴㌰挹㕦㤸摤搵㕢㐴㌰昲ㄸㄲ㥦㥢ちㅤ㉢晡搶攰㌰攳㐰㑦敦晣捣慡攲ㄷ㈲㔷捡㌵㐹㘶㡤愸ㄳ㜵㜵愲戱慥昱戳收㡦戶〹ㅡ挷㤸㐷㥤㈶愲㥣㤶晡扢戲〳㌴㤸捣晦〸㘸〳㠹捣㐳㥦晦㜸㍣つ㌲ぢ攲㕣挸摡㔰攵㘶㈱攳㕡㜱昰挵㜳摦捡㌹㈱捡戱慥㝥㉤㐰㈳慥〳㘹㥢㝦㐸㕢㜹ㅢ晤㝦㜲㑡搳捦ㅤ㌹昷㤸搳㕤昰㥣㑤换㜱㄰ㅥ㘵㤶㈰昲㔸愰㔰㌱㔱㄰攸㜲㤷捡㐰㐱捡戰㠰㡥㉡㍦捥挳扥搷㠸挲挲㑣搶攸挶㜶㕤㑦愶㌴捡㜴㜰㐲㠸㠳㝣㐵换慦戵慦愷㈷挳ㄲ挷搲摡㤱换㜴ㅢ㡤㠵㤶㠱㔲㕦㝢㔷慦㕥〰㤱挵搲㘲㘵搶㠲㤵㔹㉢㔹㈳ち㑢戸㡤㉦㥦愹慢敦㤸㑣㝦㔷㘹㐵㑦㔷慥㤱づ㙥戵㝦㈱㡡㉡敡扥ㅣ晢挳愰晣搸㑤㠹㝢捥㘳㡥晥㤱摢㌳㌰㤷愷改㤸晢㈸搰㜵㐲挳㍦昱ㄹ㜷㜹搱敥挸㍥㐳扦ㅥ摡晣㜵〸ㅦ㙤㤸㡣㠷敦㙤㌹ㅣ挵昳摢敢挱㤱㙤㤳㌸㤱〲昸敡㍦〷攵〳扦つ摣㈷ㅤ㜴ぢ㜰ㄸ〴〲ぢ晢㌲昹㜹㔸㝥敡敢ㅦ㘶ㅤ㉡㙥㐴搶戲愵改て㜲㔳戶ㄵ晢晣㌸㍦戰扡㉢㙦昴㌷㤲搱㠱㜹㕣〳户㜳㌵㌳て㘹ㅢ㥦摦㍦扣搱㉢慣㌶㕢搷㘴㙢㥢㑢㍤㕤摤㔶愵晦慦〷愷㥡㜹慡㈵㄰㤰㍤搴つ㐸㠷㝥㈳搳戴ㅥ㑣愶挷㈵㜰ㄳ〵㙥〶昱㙦㠰愷㍢㙦㉡昷㐷戱㡢慡㐳愸㠱㕤㕣〳㜷㙥ㅢ戱换㈹户㝣晤㌲㈱挳㤵慤㕡捤摣愵㙤戴捦昹㙡ㅤ㈸攵㐶㍥㘰㌶慦㥣挵㌲㍢敡敡ㅡ㤰搵㥡㝢㕤戰㉡㔸㈸敢改㌰攴ㅥ慥ㄸ㠳㈸㘸户〰㍣㥣㤵〵晡㍢扤昶㉥〳〱晤㌶挸昸〲㘲㈳愸㥤㜰㍦㌹愶㘵㙥㠷慦㝥〷㠸攰搶ㅤ㝢㝦㍣摡㝤㤵攰㝥ㅤ晢㉢㥦昶ぢ㠸㡣㌱㘳扤搵昶㔱㝣ㄷ〸戶㤱晡㉦愹㤸㕢㝤㙣㝢㥣戲㜸㈷戸㕢㉦㡢㘷ㄱ㠱慦㝥ㄷ㈸㑢慥㉣扤摣ㄷ戴㤳㐱㕦㉢ㄹ㥢昱慣摦つ㈲捥昶ㄶ戸㠷〲昷㠲昸捦㠱挰晦㐵〶搷㝦捡っ昶慡〵㑥㈷㈱㜳晦㍥㈴㐷挹晤敡敤㑦攴晥晤㤰昱改扦〱ㄵㄷ㈸㤶㘱㡢㘴㤹敥〱昸改て㔲㠰晢㤶敥ㄲ㜰㌹㜸㘶〹㜸〸㈲㐳㉥〱摣摥㤴㈵攰户㔴㝣㈵㕣ㄵ㈵攰ㄱ㜰户㕥〲戸ㅦち㐱㥦晥㈸愸㔳〲戸㈹敡㔱〲ㅥ㠳㡣晥㌸㠸戸摡㕢攰〹ち㍣〹攲攷ㅥ敡㝦㐶〹㜸ち挹㔱㑡㐰昵摥㉦㑡挰㌳㤰昱改扦〳ㄵ搷㈹㤶㔱㑡挰敦攱愷晦㠱〲户㐲挰㕤〲㙥〷捦㉣〱捦㐲㘴愸㘳㈴㜱〷㘰戲〴㍣㐷挵摣攴慤㈸〱㉦㠰扢昵ㄲ挰捤㘰〸晡昴ㄷ愹挴㜲㠸㍢昱㘰㤷〰愵㈹㝢〹〲晡换ㄴ扣换㕢攰ㄵち扣㑡㠱捤㄰搸㠰慦昶㐷戸ㄴ〳㔶敦ㅢ挳㠰㝦㠲っㅡ㔰㙥㈰摢愱㉡挶㝢㥤㑡摦愰㔲㙥昶扡㡤挷ㅤ㕥搳㜸㝦㠶挸㤰慢捦攳㠰㐹攳晤㠵㡡㥦㠰慢挲㜸㝦〵㜷敢挶㝢ち㌰〸㘲换ㄴ搴愹㍥㑦㠳㘳㈷㠳扥㔶㉢昰ㄶ㥥昵扦㠳㠸㘷扣〵摥愶挰㍦㐰晣摣㜸晥捦愸㍥敦㈰㌹㑡敥㔷㙦㤸㈳昷晦〹ㄹ㥦晥㉦㔰昱㥣㘲ㄹ愵〴晣ㅢ㝥晡扢ㄴ㜸つ〲敥ㄲ昰㍡㜸㘶〹㜸て㈲㐳㉥〱摣㄰㤷㈵攰㝤㉡收捥㜸㐵〹昸㄰摣慤㤷㠰㌷〱㠳愰㑦晦〸搴㈹〱摣㐶昷㈸〱ㅦ㐳㐶晦〴㐴㜰㡢摤㐳㠰攳㐵㥤㙡晣摣㜵晦捦㈸〱〲挹㔱㑡㐰昵㘹〱㤴㠰㝡㕡㑥㙦〰ㄵ敦㈸㤶㔱㑡〰㜳㐲搷㈸昰㈱〴摣㈵㠰㝢晢㘶〹ㄸ〶㤱㈱㌷愰㥦〰㈶㑢㐰㈳ㄵ昳㔸㐰㐵〹〸㠰扢昵ㄲ挰搱㈵晥攳捤㐰㉡挱㠳晣搶㠱摡ㄹ慣㡣㤲㐷㐰㐶ㅦ㐹挱㝡㙦㠱㔱ㄴ㘸愲㐰〳〴㌶㐰㥤挶㜷ㄴ换〶挴敢㈸敥搵㉢ㄸ㜰ㅢ挸愰〱㙤㔴㤴㉡挶ㅢ㐳愵㘳愹㤴挷〳愴昱㌸㐷㌱㔷㑢挴ㄸ昰㑣攳㡤㠳挸㤰慢捦㔸挰愴昱戶愵攲㜱㜰㔵ㄸ㙦㝢㜰户㙥扣敤〰挳㝦㥣㌴㠰㌸晥换慦搸ㅥ㉣摢㜸昴戵ㅡ搰昱㄰搰㜷〴ㄱ㍢㜸ぢ㑣愰挰㑥㈰晥昱㄰昸捦愸㍥㍢㈳㌹摢搸昳㡦㐱㡥㔸愰㄰㑣㠴㈸㕥㕦〳ㄵ㍢㉢〶㔲ち挲㈴昸改扢㠱昸戹㤳㌹挸㑡〵昶㝥㤴晤敥㔱搰慢ㄵづ改敤㉡㘱ㄱ㠱㜱㤹搷㔵挲㜴㘸㐴〱〴㡦㜲㘳㝡扣㕣㕣㔰㐰搳㥣㌵换㕤慡扤㉡ㄶ㌱㜷慥昶㔷㔷㌵㈷㝢㜸㥢敢㥤捡㌲攷搶㠴攴扡愷㐷ㅣ扦㐸ぢ愱挲摣挱㐴摢挰戵㔰㌱愵昶戶扥㘲㜷慥㘵晤て㤶㑤戵挹㈸つ挳戰搹㥣挳㤹㘹扣挹〸ㄷ㈷愷挲㙣ㅢ晣㔳户㕡㑣㤴㤳づ㕣〷〸㜰㌵搵攴㡤戴㡥搲戴昵ㄶ戱㈰ㄱ戰㕣㔸㙥ㅡ㘵㍤㉥ㅡ㈸㔵昸㘴搶㡥戱㝣㜰愴㜶㔱㉦㕦捥捡昴攷扦㈰㉢㑣㐸㥢㤹㉤㜲戱攸戳慥㔱㐳ぢ㍥捡扡㤰㙣㠴㝤晥㍤㘱攷㑦㜳㐸愴〹㕡㐶搲搴捥搹㤱㐶扡昸㕡慥捣〱昳㉤㕣戹㔹戰搸捣摢慥㙥㘳㡣〴㌸㑥戹㤲愲ㄷ㕡戲㐵㉣㍣㤷戸慣㘸㍤挹㡡慥ㄷ㤶ㄸ摤ㄹ扥晦㠲㔵㐰敢㘹㜱慥㠴㈳㔱㡥〲扥摢昲挵挹ㅤ㔸愴挱捡㈱㈱昳㐸ㅢ愴㝤慢㑣〴敢搰㘷捣㔱攴㕢㐱㝥摥㙡ㄶㄷ㥣捦捦㑦㥡㝤昶㠳㔵㠹㜸㑣㘴㤰戵㙣戴戵敡㠹ㅥ搶愲㌱昶㐱㌳戳㠵㤳㡤搷〸㥢挷〵敦㤱摣㤸攸㉦攱〵㌰扥晡搹挴㙡搳㡤㈵挱㔲ㄷㄶ㜷扢搷㡤㉡戴昵收扡〷昲㠶㕣ㄹ戶摢㙣戹㐰晣㠵挸㉦づ㙤慣摡㌴㠸㕤㉣愳戴攱㈲〷晢㠵愰捦扥㍢愴敦捥慥㡦㈳㈷攸㤰㉢戱晥㘹㠸挵愷㍥㍡ㄵ㠰㠶㙤捡〷晦攴慤〰㘸搲慡㔸㙣换㜸㌰挶㌹㝤㈵㙢㥢㈲戶戰㙦㘱ㅦ㜷㤶ㄴ搶㠲㉥㤳昵㠵挸㈳愴搳捣㈲㑤挳摡昸㘷慣ㅤ㔴㠲搶㑥晥㘰ㄱ摣晡㙤收㠸づ晢㜴㘲㉦攴㠰ㅣ㜹挲慡㜸㡣挰扦㡥挴昲收愹㈹㌹挲㥣㡡扣ㄳ㝢挳㘵㡦㌰搹㘹改㕦〲搹晡〸㤳㈷慢散戱愴愹㥡ㄵ㑣㥦㐶つ搳愹㌷攲㉤戰ㄷ〵㘶㌰㠸ㄸ〴摣㑤㐹捤㠳㐴ㅣ敢晢㝢戸敡摣搸挳搵㜷㔴㐴つ慦㈷攱愰ㄴ㔶昰戵攱㡤㔱㈸搳昷㠶摡摦㍥昴搰㑣挶㐷㈴㤵昰㤵愱㕡㠸攱㠷㐱挴㉣〸戸㈷㍣戳挱㌳挷散ㄱ㠸っ㜹挲搳ち㤸戴㘸㤴㡡攷挰㘵㕢㤴㌵㐳㡦㠳扢㜵㡢昲㙣づ晥攳捤㝦㉡㘱ㄲ昸攵〱ㅤ摢捥捡㠴㈷〹ㄹ㍤㐵挱〵摥〲㘹ち散㐳㠱㌶〸㙣㠰㉡㙤㕦戸捡ㄳㅥ㡦㘳㍣ㄸ敢捥㠴っ㈶㍣敤㡡㔲挵㜸晢㔳㘹㌳㤵昲散㡤摢㜸㠷㠳㘷ㅡ㙦ㄶ㐴㠶㍣攱㌹〲㌰㘹扣ㄶ㉡㕥〶㔷㠵昱㕡挱摤扡昱㤶〳㠶晦㌸昰〴㜱晣㌷㈷㍣㍣搸㘳ㅢ㡦扥搶㠴㘷㉥〴昴㜹㈰攲㘸㙦㠱昹ㄴ㔸〰攲敦㠴挰㝦挶㠴愷つ挹㈹攷㍥㕥㔶昷㤸敥ㅥ〸ㄹ㥦扥㄰㔴攴ㄴ换㈸㈵愰ㅤ㝥晡㐱ㄴ攰挱㈳㜷〹攰㘹㈳戳〴㉣㠲挸㤰慢㑦ㅦ㘰戲〴㉣愶攲㔵㜰㔵㤴㠰㈵攰㙥扤〴昴〳㠶晦㍥扤㠳㑡昰㈰扦㐵㔰扢〴㈸ぢ慥㑢㈱愳ㅦ㐲挱㤲户挰愱ㄴ㌸㡣〲〳㄰搸〰㜵摡攱㜰㤵つ攸㜱昶〹搵㘷ㄹ㘴㔰㝤搶㈹㑡ㄵ攳ㅤ㐹愵换愹昴㘴〸戸㡤户ㄱ㍣搳㜸㐷㐱㘴挸挶攳戹㈶㘹扣愳愹㤸〷㥣㉡㡣昷㘵㜰户㙥扣㙦〲㠶晦㍥㍤㐳㈵㜸㤰摦㔳㐱㙤攳㈹㙤㑦ㄶ㌲㝡㡥㠲㍣㈹攵㈱㤰愷㠰㐱〱ㅥ㥥摡〰㜵㕡〱㉥挵㜸搵㘷愶㘰扣ㄵ㤰㠱昱扥愳㈸㔵㡣搷㐵愵挷㔲改㜹㄰㤰挶㔳ㄶ㕢㉥〰捦㌴摥㑡㠸っ戹敤攱㜹㈸㘹扣㙥㉡扥㄰慥ち攳昵㠲扢㜵攳㕤っㄸ晥攳㥣ㅤ挴昱摦㙣㝢㉥〱换戶つ㝤慤戶㘷ㄵ〴昴攳㐰挴愵摥〲晤ㄴ㈸㠲昸㉦㠳挰㝦㐶摢㔳㐲㜲㥡㕣㡢㉤㕥敤捦㙡挸攱昵㙥㔰挱搳㘱戶昹㤴㔲戰ㄶ㝥晡㍡ち㕣ぢ〱晣挷㍢摢㜴攱㐱づㄱ慥挷㤳摢㘶㔵攷ㄳ愴扥〲㑦㉡㜴㤴搶㜵攳㜴〸ㅦ戹㈷㙥㍥㜱㝣㠱㘹㌵㜸搸愹敦敢挷愸扡挱㝤慡摦挱慥㐶挰挳挷扡㕥攲㤷㌰晡昰㈰㠴晦㤴㡦慢㕦㔴㜷昰㡣㜸昹㡤㕥㘲昸搱㑥㐰㥡挶戶㜷攵晡晢㡡㝤㠵搲挴づㅣ㝣㥡挸㑢ㄱ㜰㜶㌲搴攲晦ㅡ㌴㝡㠶挹㠴㌵昴㈲㈱晥搵㝣㐹㌸戰戲户㙦㑤慦㡣㡤扦挸扢㈱ㄸ㥡㍥㙣ㄸ㠳攱㠰㕢㝥㜶㠳昱㠲㍦㠷て挱晡㔷ㄱ昰挸晡攰つ㜰搳㥥摡㝡戸愷戴捥㙥㕤搲㤹㌲昲㠵㘴摣㐸㈴挳㤱㑣捣㠸挶㌳〹㕣㕦㤵㡣收㜰㥦㑡㌸㤲㉡㐴戴つ㡡㘸㈶ㄶ㑡㈵ぢ戹㈸慥㔳㑡㈴昳搹㜰㈱㤴㡢㠷戳愹㕣㍡㔵㌰㡣㡣㜶㤲㈳㥡挹㐶㈲愱㙣㈸㤲捦㈷㈲戱㙣㉡㤵挱㈷㠷扢㐴攲改㙣㌸㕥㈸攴㠳㌷㕡㌱搱㑦〶㐶晦ㅡ挹㐶㤰㈰㡦㍤㌰㠶晡㈹㘴㝤㥤攴ㅢ攴摦㙣昳㉢攵晤户㠱㍦搴㔳ち戴㠴挸愲ぢ捣ぢ愳㘱搸戰慡ㄵ愳慡搳つ捥ぢ攷㥡挶敤㙤晦〰㌲挸扤捣攴つ㐲慣㤴晣㈷㔸㈶敡っ愶攷㕢㈰㠱㈰㡦㌹挸慣昸㌶㥣愳㕢㘷㜷㔶㕥愲愶㝤〷散ㄱ㘰换㠹搰ㄲ摣㌳愱㝤ㄷ㥣㔱攰㈸㠷戹㠲㜷搸㘶㌹ㄳ㥥昲戲㌰㜹㙤㤸昸㈵昸㡣㠳晥㝤昰昹挰愰挴㥤㜸㘲㑤ㄲ㉢㤱㄰㤶㕦㌰㌱换㠳〸换㥦攸〲㠷㘵戰戲っ摤〵㠰㉣㐳攷㌱㠸昳㐱㐶搶〵㌷㔳ぢ㔰摡〵㜰㥢〵㈹㔲㠸㘵㌳昱㙣㈴㤷㐴㐱捡ㄴ㔲搹㜰㌲㕦㈸攴攲㤹㌸慥昴挹挴ㄲ挱扢㉤㡣晥〳㘰㠲昷搸慥ぢ改攲㌹〸敡㤳㝥攲㝥㍣㌲㘳㐵ㄶ戱愱搱㜹昰㔰扦〴㠲晡愵㈰〱昱ㅢ㕢晣㌲㌸㜷㠲㈷扦㐱㥥ㅢ㤰㘶愶㐹㜵ㅡ㔰愷捤㠲㍣㑡㈰昹㤷㤳戵㌳㜵㔱㕥挸㤳〰㜴㕤〵㍥㘴㑣㈳㍤㠲㈷㘹愴挳㄰㜰戵㤱づ〱户摡㐸㍣て㈰㡤㜴つ㠳昸ㄹ〸㡣挴〳〰㔴慢㙤㠲摢㌴㔲㍥ㄵ㡢㐵つ㈳㘹攴㈳昹㔸㌶ㅢ㑢㘵挲㠵㔸㉡ㅥ捥攴戲㜹摣戹㔳〸㍥㙥㘱昴㙢㠱〹㍥㘱扢慥愳敢㐹摢㐵㍦昱っ㕣搲㐸〷愹㐶晡㌹扣昴ㅢ㐰〲攲㜷戶昸㡤㜰㡥㐷㍣昸つ晥ㅥ㕣㉦㈳晤挱收摦㑡つ㔳㈰㉡㉦㙢ㄳ捦搹㕡敥〰ㅦ捦愶㤱㕥挰㤳㌴㔲慢愷㤱㕡㍣㡤挴㉤㜳㘹愴㍢愱ち慤搱㑢㜰㌳㉡摡㕤㜰㥢昶㠹㐷搱㤰攴㜳〵摣挲㤲㡥㈵戳〵㕣㝡ㄴ㡢攴ㄲ㐶㌶换ㄶ㈷㤹搵㌶㍢愲㐶㈴ㅥ㑤㈷㜳愹㠸㠱㑢㤵ㄲ挹㐲㉡㤷〸㘷ㄳ㠵㝣㉣ㅦ㉤㐴攲戹㤴㜶户㈳ㅡ捤挶愲㤹㐴㍥㥤〸愷戳戱㔸ㄲ㌷㥢愱㘹捡㈵ち愱㐴㈱㤹挹攴㡤攰换㔶㑣昴㝢㠰搱敦㈵戹て㈴昸㡡捤晦㌵㔹昷㤳晣㠶晣㔷㙤㝥愵扣攰挶扣捣㤳愸㤵㈷搲搲てㄳ昷〸㐸㈰挸扤㜹㉦敢扦㘱昳㥦愰散㜴㕡㝦ㅡ㠸㤰扢敤㜴㍤つ㍥㘴㑣敢㜳户㕤㕡㝦㑦㑦敢敦攱㘹㝤敥戹㑢敢晦㠱㐱㍣ぢ㠲㈲捡㑤㜶慡搵㥥㠳摢敡㄰昲昹㙣㈶㠳换昴昲改㐸㉣㕤挰㜵㠵搱㐴㍣ㄴ㡥㐵㘲愱㔰㌶㥥㑢〴晦㙥㘱昴攷㠱〹㜲ㄷ㥥ㅡ昴ㄷ攸攲㜶扣㜴搱㑦晣ㄳ㡦搲ㅣㄳ㉤㜳挸㝡晣㌲扣昴㔷㐰〲㐲㙥㘲ㄳ晣㉡㥣愳昱挰㙦㤰摢搷㕥㐶㝡搷收扦㑥つ㔱攲戸晣㈱摥〷ㅦ晦㝤晡㕦挰攷〳挱㠲ㅢ搲搲㐸攳㍣㡤㌴挶搳㐸ㅦ〱㈴㡤昴ㄶ㠳昸㍢〸㡣挴㝤㘸慡搵摥㠶摢㌴㔲挱挸挶㘳愸挷戱㡣㠱晡㡢挲㕡挰㌵㘵㠹㘸搶挰〵㠲挹㕣㈶ㅡ晣挴挲攸晦〰㈶挸㡤㙡㙡搰摦愱㡢〳㐹改愲㥦愸〷㤱㐶ㅡ愱ㅡ改㕦攰敡晦〶〹㠸〶㑡ㄱ晣㉥ㅥ㈶攰㠱摦㈰挷慦㕥㐶搲㙣晥㠷㜸㤰㜷〷敡㘹挸攳㈸戲愵攵ㄳ敢㐱ㅡ㠹㝢戶搲㐸挲搳㐸㕢㍥昲㙡散戸㜳㉢㡤㔴〷ㅤ愸挷㈳攰愶㌶つ愷㈵㉤晢㘴㔲㤹㘸㈴ㅣ㑤ㄶ搲戱㐴捣〸㐵㌳挹㐲〴〳㡣㔴㌸㤱捥㐶㜱愹愰搶攰㠸挶㜰㘹㔸㌴㡢ㅢ〷㔱㈹㜱ㄱ㘱㌲㡤攱㐱㠸ㄷ㥥挵㔰㕦戳戱戸挶㉢㑤㑤慢㘷㤳愱㕣ㄲ㔷挲㘶㔲搱㐴㉣㤴换愶㜰㜳㘳㌴㘳攴㌳ㄹっ㐵㘲昱㘸㜰愴ㄵㄳ㕤〳㐶ㅦ㐶搲〸ㄲㅣ㘵昳㜹㙦慤ㅥ㈰ㄹ㑥㝥㤳捤㜷㐴㈵㔲㙣〳扥捣㤳㝦挰〰散㠰㈰㡣㉢㙢㠹ㅢつㄲ〸㡥戱㠱摦挶㠳搲搵㡣戵昹攳㈸摢㐲搴㉣㄰戱㉤昸㌲て户〷㥦て昸昱㠹敤挱㤵搶㝦ㅤ挱㔴㜷㌵慦㜹㕡㝦〷㠰愴昵㈷㌰㠸㥤㐰㔰㐴挷㕢晡戵㥤攱㌶㡤㤵㐹攷㜳㘸ㅡ㜳ㄸ㝦㠵㔱㤹㜳搹ㅣ㙥搶挳挵㙥戹㕣㌶㥣㐹攷㜲挱ㅤ敤㌸敤〲㑣㜰㠲敤㥡㐸搷㑥戶㡢㝥㘲㈲㕣搲ㅣ㉦㔸收㤰昵㜸㌷㜸改㤳㐱〲㘲㔷㕢㝣ち㥣摣晥攴㌷㌸〹㕣戸㝤扡换㐸扢搹晣㍤愹㠱慦搰敢昳㐱晣㔳挰㜷て慦㤴攳攰捡㉥ㅥㄶ〷㝤㐱㘵㙢㔵づ搴㐶ㄷづㅥ挸㜴攳〲摡㐵㔸摦㉦㤱昵㐵㔸ㄹ㙥㌰㜷㔹戶㍡㐶㤵㐹㌸昲㈸づㄵ摤㌶愸ㅣ㘲㕡㘹㤳ㄷ㈱㝤戶㜵收㠰晦㐹攴攳搰㐲㘱㔹㉤㑦㘴散㠱慣戹㈳戰㍢昲㙢攸ㅢㄲ搴㌴愶㝣㐶㥡愷攱愷㜵㘳㙦㘶〸敦ㅥ散㠵㜲㈲愶㈲㌴㔹㠵㘶搰〵㘵㉣㕡㠲慢摡戲ち㍤愶㔴㈱㉤〴扦㥡昳㉣昱㠸㘷扤攲ㄲ㌷㍦挱改昶挳㕥昶挳っ敢愱㘹㙦㍣㜰㜴慣㐹挹捦㤱〴㐳搰捣〴戹敢㑡搸收挷攱㉢慦攲㤴㤷㜲㡡㈸昸搲ㅡ㈹昰ㅤ㙢㜰㐵㕡㕡攳搷㡡㌵捡〳晣㝢㍤ㄳ㥥〰㐸㌶㈸晢㐱ㄵ㥡㜳慥㐱㌳㉡摡㑣㔰戳㉤㠹㘵㤳㈹㈳ㄷ㑢㐵ㄲ㤹㐴㉣㤲捤㘷㌱㐳挴摣㉥ㄷつ攷ぢ戱㔸㈶愹敤敦㠸㘲愸㠵戱㙣㌴㥦㡡戲昱づ㘱㉥㄰捤㈶搰㔹挶㜳㠵㔴㍥㤵㡢㙡㍣〵㙦㙡捤攵㘳攱㝣ㄸ户㘱愶㤳戱㔸㌶㘲愴㌲㐹㈳㠹㕢㌰㌳〵摥㤰㤹㡥〶㔳㔶㑣昴㔹挰攸㉤㈴戳㐱㠲㘹㥢摦㑡搶ㅣ㤲戹攴敦㘳昳ㅤ㔱㠹ㄴ㌳挱㤷敤搷捤㌰㠰搳㥣ㅦ㐰摣㠱㈰㠱攰晥㌶搰搵㔲㜱㑤ㅣ〲㍥㝤ㄱ㘵昹㜶慤扣㘳㔴戴㠰㉦慤扦〴㝣挷晡慤攰㑡敢晦㑣戱扥戶ㄴ㈲戵换攲搵㥥㔹㌲〷㥡㘴㤶ㅣ捡㜰て〳㐱ㅢ㍦搷ち㔴㍢ㅣ㙥搳㠲㜱摣〶ㅡ换挷㜳ㄸ㥡㐵㘲〵㠳戳敢㑣戶㘰攴㡤㑣慥㄰挹愷㤲挱㜹㜶㐴㡦〰㈶挸昵㙦ㄹ敤㘵㜴㉤戰㕤昴ㄳ㕣㈳㤶㌶晡戱㘵㈳搹挶ㅦ〵㉦晤㘸㤰㠰㔸㘸㡢㜷挲㌹〲愶攰㌷搸づ㉥摣㔵攵昶㈰㥢㥦愳㠶攵㤴㌸ㄲ㐴㉣戶戵ㄴ挰㜷㉣户〴㕣㘹戹昳ㄵ换㤵换敤戹㥥㐶敡〰㐸ㅡ改㔸愸㐲戹㕤㙡〵愹慤㠴摢戴㑦㈴㤴㐸㈷ぢ㤹㐸㈶㤹挳〵搰ㄹ慣㐳㠴㤳㈸㘵㈱っ摤㌰敥㡦㠴戴㙥㐷戴㤰挲㌴㤵㠳㡦㐴㌸捦㔱㕤戶㠰昹㐴㍥㡦㤱㐵㈲㤲挸㠷昳㕡㡦㈳㥡㡦愷ㄲ愱㐲㌶㠲攱つ慥慢㡤攳扥昹㜴〶〳㤳慣㤱㠸挷昲昹㘸㍡挸ㄵ㘸㐸晢昴㕥㔰扤㡦㘴ㄵ㐸昰㔰㥢㝦ㅣ㔹晤㈴㐵昲戹㈰㡤㕦㐵㔴㈲挵㌲昰㘵㥥㥣㙡攵㠹ㄴ㕡㑢摣㍡㤰㐰昰㐸ㅢ攸㉡户换㙤晥㠹㤴捤㔱㜵㤶搶㍦ㅡ㝣㔹〰㌶㠰敦㔸晦换攰㑡敢慦昷戴晥㠹㥥搶捦〰㈴慤扦ㄱ慡㘰晤㉣摣㜸昲㘹愷㠰㕡搶て愷㌳昱ㅣ愶㘳昱㐲㈸㤶っ㘳扣㤶㐶㕤㉦ㄸ戱㔰㌶㤱㐹㘶愲摡搷ㅤ搱扣㤱挵㉤搴㠹㐴㌶㥡挳㤸ㅡ昳戴㝣㉥㤴づ㘵愳搱㔸㈱ㄶ㑤㘷搲摡㌷ㅣ搱〲㘴㜸㈱㙥㈴㤶挲攰㌲㤵挸㘶㜰㡦㙥㈲㥢㡦挴㜱㐳㙢㌶ㄲち收慣㤸攸摦〴㐶㍦㤵攴㌴㤰㘰摥收㥦㑥搶ㄹ㈴摦㈲摦戰昹㤴㉡㠳挴ち昰愵昵晢㔴敢㝦㡦㐲㘷㠱〴㠲㕣扡挶㐳㔵搹㍦搶收㥦㑢搹㘳㈹挱㔷㥡㐵㌷昸搲晡ㄷ㠰敦㔸扦ㄷ㕣㘹㝤挳搳晡㌹㑦敢昷〱㈴慤㝦㌱㠳戸〴〴つ挴㉡㑢扦㜶㈹摣㔶ㄳ㥢换㘴攲ㄹ㑣攲搰㙡挷攲昹㕣ㅡ搷㥣㠷㡣㐲㈱㡤挹㕤㌲㥦㠸〶㡦戳攳㜴ㄹ㌰挱㝥摢昵㐳扡㡡戶㡢㝥㘲㌵㕣搲ㅣ换㉤㜳挸〶攲㜲㜸改㔷㠰〴㠴㕣摦㘵㘲慦㠴搳ㄹ〴㜲㘵ㄷ敥㉡㈳慤戳昹㔷㔳挳㜱㤴㔸〵ㄲ㍣ㅥ㝣㤹戲㑤攰㡦慣昷㝦ㄵ敥㝤㙢ㅦ敤㔲ㄶ挳愶攱〴㐴挵㥤戰㜳㜱挷㉢㠳昱搵攳㥤㉥昳㑤愸㠶扡㝤㍥㥢㉥づ捦㜸敥㠵㕦晦挱戰挰晦㐰て戳扥㍣愶愲挶㕤昰搵慦㐳㠲晤㈷㈳扥㥥愷㉣摣㜷㤹慢㝦昸㠰挳㤱㜱㍤㙤㐵㉣ㄳ攲ㅡ㤴愵㝤㉤捥㕦㕦ㄸ㙤㉦ㅦ㑥戳慦㉡㥤㔲收搸〷㤸㙣搸愲㝥〷㠷慢㍦戱搰っ㡦㘹扣搸㜴㕣搹愵扣㐹戶㘳㤹㡢㌳㙢㌸㑤㘳攴㙤㡤㐵ㅣㅢ㘹愸慢ㄷ敥㜳〰㜲㌴㙦晤㥤〵扥㍡㐶㙤戸㠶户㉤捦㡢愵㜶昴㜸㡦㙥㜶㔷㐹扥㘱挴㜵〱愱㜳搵㕡扢ㅥ㘶搲㘶㑥㕥㌸㌹㥣昶户㈳㈳㠶ㅣ㐶愵搹ㄹ㈲㌴攱㌵昶ㅢ昰㈳扥〶搵戴扤搰㌷㌰㤰㥢捣㐰摡㄰㠸㘸㐳㈰っ〸㝣㐸摦㐲改㡤㡥昴㐹㤴扥つ扣㘱㌳㈷户㉣㤸ㅣぢ㠹戹㤶㌸㠳ぢ攸㜷㔰晣ㄴ〸㔱〳㥥戱㤵㘷㌹昰攳ㄳ㕣摢愶て㠵㥢捥㠰㠳㥢㤹慥搱攵摢㌸〰㈲㍦戳捣㥦㐶敢㌷㌸慢改㕢㌶攲㈸戱敢昷㕡晣㉦慤㌷㈵㌰攰ㄸ戹攸㑤晤愲扢㥢捤摦㥦㌷㌷㥥昳摣㔱㌷㕣㜰㙦戳㌸ㄳ〸慥〳扡㉦㤷㥣㠵㐸㜸摥愱搶㙣㜹戸㙦搸っ㜲㘵㔹㔶搴捤㐸搶挸㝡挱攵㘱㔶㔶㌱ㄳ〸搶㄰㔹愸敦㘱晡捦户扤昶戵扣㘸〸晤㍥㝡晤〰㕥愶摤㉦挰㤳㜶㍦㜸挳㘷㑥㍥㜴㜲㘲㥦挹㠷㑤㡥㠵晤㐹㈰摣㌳ㄵ戵ㄴ㈹慦㉤㐲㘷戹㔶㌱㝢㘹㔴晤〱㘸搴ㅦ㘴㔰ㄷ㈲〰慡㤳戶收㘲㌲㤸戵㙤摤㜴愹㉤㘱摢搶㝤愵㑣昰㌲㐸㜰㈱㔹㝦㠸㘱晣㤶攴㘱㤲㐷㐸ㅥ㈵㜹㡣攴㜱㤲㈷㐸㥥㈴㜹㡡攴㘹㤲㘷㐸㝥㐷昲㝢㤲㍦㤰㍣㑢昲ㅣ挹昳㈴㉦㤰扣㐸昲ㄲ挹换㈴慦㤰扣㑡昲㐷㤲搷㐸晥㐴昲㍡挹ㅢ㈰攲㜲挴捣㉢㤷挷㈲昹㥥戹㍣挶昲㜰㕦㈱ㅡ扣ち㥡㘴㉥扦〵扤挸攵㙢攰㤶戹㍣ㅡ〸㈷㤷摦㘶愰㍦戳扤㥡㉣㉦㌰戱攲㐵慦㙢攱㘵收昲㈶㍣㘹晦〴㙦挴捣挹换㤸换㉤㉤㤳愳㘱㌱ㅣ㄰㍢㙦昴㝦挳㕢㝦㤷戸敢㈰㙤戳㥢㝥づ〷㤸㠳㘴ㄹ搷扤愵㐴捤㉣戳㤷挲昵昷ㄸ挶晢㈴ㅦ㤰㝣㐸昲ㄱ挹挷㈴㥦㤰戰扡敡㑣扣捥搷愵㜵扣ㄱ㡢㙢づ㐹㜰㉢㌸晥散ㄱ㠹㐶㌲㡣愴㤱㠴㝦㄰㐹て㤰っ㈷ㄹ㐱㌲㤲㘴ㄴ㐹ㄳ㐹㤰㘴㌴㠸戸ㄵ㤱昵捡愳㌷㍦慣㤱㐷㝦戱㍣摣㌷㥣〶敦㠰㈶㘸挴晥て㈸昲攸㑥戸㘵ㅥ扤〱㠴㤳㐷㍢㌰搰㝢攰㘵㘶挴㕤㜸搲㜶〴捦㙣㑢ㄳ攲㡦㄰戶ㅢ愹㠰扥ㄳ愵敦㜵愴㌷㔳㝡ㄷ㔳ㅡ㡤㘲㐲扣㘴㐹㠳㡦㔶㙥㔷㑡摦攷㐸摦㑤改摤挰㘳愳㌸㤷㡤攲㜳㤶戸搹㈸㑥愱㌸㤷搴敤昰挴晤㤶〳㍦㍥挱㈵㜶愷㔱㝣ㄸ㡥㑦搷㈸㍥㘲㈳散㔲〰㥤昲㜳晢愸㥦摥㌹昷㤵㉢㥡捤摦㜳㥡㍦晥攴昲㔵ㄷ㝣晢散㘶昱〴㄰㕥㔹昱っ㘲敤㔹㕤㥥戶㍣摣昷慣〶㥦㠶㈶㈴づ慢昷愰挸㡡㍦挰㉤戳攲㐹㈰㥣慣搸㡢改㝦搶昶㝡摣昲㐲㜱挳㔹㌷㝡㜱昱摣捣愵攷昰愴㠵挱㐳愳㜸㌸慢换ㄱ㤳㈳ㄱ昱㌰㄰㜶戵搰愳昰搵㘳㠴扤〰㘱㥢摤昴㌲ㅣ搴㔸戳㌳㘹㝡挵㤶戰敤㔴搵挰扤ち〹昶扣㝡㥣㘱㈴㐸㤲㈴㈹㤲㌴挹㍥㈴晢㤲散㐷㌲㤳㘴㝦㤲㘶㤲㔹㈴㉤㈴戳㐹㕡㐹收㤰捣〵ㄱ㕣挵昷戲晡捤㤶㜱慢㉥㝢扥挹昲㜰㕦散ㅡ晣ぢ㌴㐱㈳㘶昳愰戰晡㕢㜰㑢慢摦㘰㤹㔶㜶㐵敤っ昴敦戶搷昵㤶㤷戴晡㈲㝡㜱㌵摥戴晡摢㜸搲づ〶て㔶㕦㑡慢ㅦ㌲㌹㥡㄰㥢㠰戰捤慢㜷挰㔷㕦㑡ㄸ㤷昴㙤㜶ㄳ㤷敤〷户晡扦㙤㠹㥡㔶户㤷昹昵㐳ㄸ挶愱㈴㠷㤱ㅣ㑥㜲〴挹㌲㤲㈳㐹㤶㤳ㅣ㐵㜲㌴㐹㈷挹㤷㐹㌲㈴㔹㤲ㅣ㐹㥥挴㈰㈹㤰ㅣ㐳戲㠲愴㡢攴㔸㤲㤵㈴摤㈴㍤㈴扤㈴㝤㈴慢㐰挴㠷㠸戶㔷㘶㥤㘱攵㐹㔵㘶㥤㙥㜹戸㉦愰つ㝥〲㑤搰攸搳㔷㠳㈲戳敡㘰㉦㤹㔹愷㕡㌹㈲㌳㙢㉤〳搵攰㘵收㐸㍤㥥戴攳挱㘳㡢搲挶ㄶ攵ㄴ㐸摢㡤㐴㐰㍦㠱攲㕣挴㌷挵ㅢ㈸晥㔵昰㘴攳ㄶ〹㠹㤳㉣㘹昰搱㕣㙤愰㌴㌷〶㑣㘹㍦愵㑦㌶愵摢㈶㐳晡㐴㑢ㅡ㌱㠵昴㐶㑡㜳攳挰㘹慤〲㤶㠳晥㘲戸攵㤰挳㡡㈰ㅣ㥦慥戵攲㝥㠲㐴搸攵〱㍡攵㘷㤷摦㕣㝢挱摥㉦晤慡搹晣扤戶昹㠶㔵ㄷ㡦摢攱㉢扦㘸ㄶ摣㕡昰捡㡡戵㠸戵㘷㙢戵挶昲㜰㕦㠳ㅢ摣ㅥ㥡㤰㌸捣㡦㐱㤱ㄵㄳ攰㤶㔹㌱〰㠴搳㕡㥤挱昴敦㘴㝢ㄵ㉤㉦戸㌱愷愳搷㉥㜸㌴つ戹㌳㥥戴敦㠲㠷㝡戳㤸昵收㘰戶㔶㝤㐰搸ㄵ㐴晦ㅥ㝣昵戳〸㥢〸㘱㥢摤戴ㅢㅣ昸㍦㐸㙢㌵搹㤶戰敤㔴搵㕡㑤㠱〴愷㥤晡昷ㄹ挶搹㈴攷㤰㥣㑢㜲ㅥ挹昹㈴ㄷ㤰晣㠰攴㐲㤲㡢㐸㉥㈶戹㠴攴㔲㤲换㐰〴㌷㈷扣捣㝣愴㘵捤慡ㄲ扦捣昲㜰摦戰㉢攴昲㌵㈳㜶㈵昴摡㥦攰っ攸愷㕢扦ちㄴ挶攷〲㙦㌹扣晤㔰㥣捣敢〴㤷搶ち慦挳昲㜰㕦㈷ㄸ㑣搹㥡㌷㤹㥡昷㠳㕢㘶敢挱㐰㌸搹㝡ㅤ㍣挵㉣㜸㤹㜹㌷ㄳ㑦摡昵攰戱㠶捤㘳つ㙢㠷㜴戹㠶摤㐰㜱慥慢㥡攲晢㔳晣㈶昰捣攱㐳㔲戴㔹搲攰愳捥摣㐲改搹㡥㜴㌳愵㙦㌳愵㌱㝣㐸㡡戹㤶戴㔹挳敥愰㜴㉢㘴㥣ㅡ㌶挷㜲挸ㅡ㌶搷㜲挸ㅡ㜶〰ㅣ㥦慥㠶ㅤ㘸㈳散㤲㘳㘷㐱挳ㅥ㑦㑣㍡㘶晡㝦㌵㥢扦㤷㌵昷慥改搸㜸敦戴㜳㥢〵㔷㝢换㔹㜱㉡㌳改㌴㄰㌱ぢ戱昶慣㘱捤㤶㠷晢㔲挳攰ㄲ㘸㐲攲㝣晡㘶㔰㘴㌲搷㜳㘵㔶捣〴挲挹㡡㝢㤸㝥慥昲㑡慦㝤㉤㉦戸㌱㐹愲ㄷㄷ㘸㑤戳ㅦ㡥㈷敤㝥昰㔰挳收㑤㑥敦㌳㜹㍥摢慢㈴㄰㜶㔵搲ㅦ㠰慦晥㈰㘱换㈰㙣戳㥢㡥㠲〳晦〷愹㘱㐷摢ㄲ戶㥤慡㙡㔸㈷㈴戸敡慢㍦挴㌰㝥㑢昲㌰挹㈳㈴㡦㤲㍣㐶昲㌸挹ㄳ㈴㑦㤲㍣㐵昲㌴挹㌳㈰㈲〷㈵㕥挶㥤㘲搹戰慡㕥㑤戶㍣摣㤷㈵〶ぢ搰〴㡤㤸㉡㠱挲戸挷挲㉤㉤㌸挹戲愰散㐹㕥㘴愰扤昰㌲㉤戸ㄲ㑦摡换攰戱㥣捦㘱㌹摦ㄹ搲攵㜲晥㉡挵戹㘴㙢㡡㜳㠱㔸㝢つ㍣戳㥣挷挵㜸㑢ㅡ㝣㤴昳搷㈹扤捡㤱收ㅡ戱昶㘷㔳ㅡ攵㍣㉥戶戵愴捤㜲晥㈶愵戹昶敢㤴昳㝥换㈱换㌹搷㠲敤㠸㌴慤㠵攳搳㤵㜳㉥〹㝢昶㈴搳摦㤸扥敦㤷㕡慦㙣㌶㝦捦㙤㝥㘷扢〷摥ㄸ㤸㝡㘶戳㌸ㄱ〸慦慣ㄸ㡤㔸㝢㤶昳愰攵攱扥戲㌱戸〱㥡㤰㌸摣挷〰㡡慣搸〸户捣㡡㔱㐰㌸攵晣扦㤹㝥慥捡㥡戶㍤〵㑦摡扦挰㠳㙤㘱慤㤴〸㔴㔸敢㕤㑡㜳昹搶㤴晥㍡愵摦〷㡦ㄹ㌷㥦ㄹ愷㔹攲收愴攲㐳㡡㥦收㠸㜳挱㔸晢搸㔴㡥戵愲㤴愸戳愴挱㐷挶㙤愱昴改㜸㜶戲㠲ぢ挲㜴挸慣攰挲戰㤳ㄵ摦㠳攳搳㘵〵搷㠷㍤戳攲攰㕦㉥㤹㌱㘶昴㡤捤收敦攵捤㠱㈳晦戶㜱晢㘷搰攴㜰愹搸㉢㉢㍥晥愰㐶㔶㝣㘴㜹戸㉦㡥っ㕥〰㑤㐸ㅣ㘶愸㠸〱戲攲㘲戸㘵㔶㝣〰㠴㤳ㄵ挳攰㈹㉥戱扤摥戳扣攰挶㉣㤶㕥㕣昲㌵敤㝥㈹㥥戴攱攰㔵㜴敡晦〴挲㙥㕢昴㤱昰搵㐷ㄱ昶㐳〸摢散愶换攱挰晦㐱㥡㥣㉢㙣㠹㥡㑤㡥扤㤶慣㌷㌱㡣㈰挹㘸㤲㙤㐸挶㤰㡣㈵ㄹ㐷戲㉤挹㜶㈴摢㤳散㐰㌲㥥㘴㐷㤲〹㈰攲㙡〴攸㘵收㤷㉣㙢㔶㌵㍥㉦㕡ㅥ㔵搷㔲㙥㠲愶慤㕤㑢愹晣ㅤ㌶扥㠱敡㉦昰㌰昲昰㠲挹收㡡戲㝣换户㕢㥥攴ㅤ㠱㙢攴晡昱㤷搰ㄶ攲戲㐴㕣ㅥ㠷㍦㔹㙢ㅤ〸挵㈵㡡㝣㍦捡扥愸㑣㤷㉥㠲戵挲愲㝥摣㕣㌶慣搰㔶挴扢慣昹㐶晣㈵愷ㄲ慥攲敦晤㈲㥣㝡挰搹敡〶㔶㈴ㄴ〰㜹㔱愵攷戱㘶㥥㔷昶㕣扤㤵㙦挸捦㈸摢挳㝥㥦戱㡥户捦㝤戶㌳て摡㈴㘴扦晤昲㐵㕥戹㑥戱㐱㍣㡦㉣㌶㑦㜴㙥昰㙤㤱㜱昶搵攱㘰ぢ攴戵㈹㈰昵昸敢㐴㜲㈹ㄱ〴㙦㌳昰昵ㅡ㐹㝣晥敢㔰〴摣〹攳㈱㜳㙥扡晡㕣㝦愲㙣昸㜰晢㄰㌸㐳㘸攰㥡昳㘰敢摤昰昶つ敢改捣昰㡦㜴㌷昶㜴㜶ㅢ扤挷㤴㔶㌸㝦㤸ㅢ挷㕦㜰昷戶扥〷㘲挷愰㘴㡢㜵ぢ㈰搴慡㑦㔵戹㜷搸摣㍤㔵敥㘶㜰㔹㝥戵㉦㠱㙢扦㔴㔱㘹㤴愷㍣㡤㌲ㅤ昲㍡㡤攲㘹㄰㜱て㜴搲㈸昶挷㝦ㅦㅣ㐹搷㠶㑢攵㘹ㄶ㜳晤㔶敥㈴㑣㌳㥦慤㉢攵昸㠶㡦戲㥥换㤳㈷攴昸ㅦ㠰捡㐹㉥㤵敡㠲㌰敡捦捡捣㌱摣搳昳改㙤挵㌹敢㜰㙣扥㉢㌷愲慤搸㍡搰㌳㘰扥愰つ㐵挲㕣ㅥㄶて㐲㤹㌴摡摥㐸ㄳㅢ㑤㝥晤㕣捥㜵㤷换㥡戱收晡㡡昵㠷搵昴㥥戹搶敤㡦㝥昹㜷ㄴㅢ改收ㅦ㔴昴昷㜴㤴㡣㔵挳㝢捣〴戲敥〲㠴挰昰慥愸愶挵㕣㠹愹ㄹ㤲㘵ㅦ挲捤挳㍦㔲㠹㑡摥摢昲搶〹捤昱愳㙦晢㝤戳挹㝤捦㉡捥敦㙤昱㍦㡡晣晣㑣㈱㜹㘷㠳攰㙡㌷敤戴敥捦扢㠷ㅢ慦㌹挳〹㜰㔹㝥摦ㄷㄷ㝤敢㕣挷㙤㐷㐴㍣㠲〸㌰ㄲ搴㈷ㅥ戶搰ㅦ㝣昵搸㍢㑡㘷㥤攷㐸晦昴ㅦ㡦户㘷㠳㔷㌹㙥〷晤戰㡡收晡㍡挳扥昰㥥㠹搷昵慦戸捣㤱㍥㍣㝤挳晤慢㝦㜹慤攳㜶搰扦㔵搱㡦㕡攸挰㌳㍦㕡㌵㌳㜰愵㈳晤捦㡦㥦㕣晢攷摤晦换㜱㍢攸㠷㔴㌴㔷昴换改扥挶㤱㥥昶㡤㙤㝦晦昰扢㍦㜷摣づ晡㐱ㄵ晤戸㠵㜶㠷㜵㕢摢㠸扡㘹摦戸愹ㅡ晤㠰㡡收ㅥ〲挳㡥捡㑦㌹㉣㌳散ㅦ㔵愳㝦愳愲㥦戴搰戴昸昶つ攵戰捣ㅣ㉢摢挱㠹昹晤㉡㥡扢ㄶっ㝢挹㉤㍢㥦昲收挱户㌸㘱㤹摡慥㜰摣づ晡搷㉡㥡摢ㅤ㐴㥦摡昲攵搷ㅥ㥤㜴扢㈳敤捥㐱〷㝤㥦㡡收㍥〹搱挷捤㘴㥥晤挲㐱搷㉣㙢昷慡攸摦㔹㘸㔳昷㥤づ摡㉣㉤㤷㌸㙥㈷散㝢㔴㌴㜷㘶ㄸ昶㠲㤷㡦ㅦ扢㘹晥㕤㡥戴㤹㘳攷㌸㙥〷㝤户㡡收㤶づ搱㐹㤹昰捤㡥㜴㑤慢㙤㔶搱摣ぢ㈲摡捣摦扢ㅤ昴㔷㄰㤳㤷㡦晦扥攳㜶挲扥㑢㐵㍦㘷愱㜷㘱㝥敤㝣慦㈳㕤㌳收㜷慡攸攷㉤戴㈹㝤摦搶搱扦㔲搱㉦㔸㘸挶㜳散愶㕦㍢㘸㜷㙢攱挴晣㤷㉡晡㐵ぢ晤挳戹㌷晤昷挷㑦摥敦愰㍦晡〹㥢㠷つ㡥摢㐱晦㐲㐵扦㘴愱㘵㘱㤹昹㠰㈳㉤摢愵摥㤳ㅤ户㠳扥㐳㐵㜳㠷㡤㌶㤷㐶㍢攵㐱㐷摡㙣愹搶㍡㙥〷㝤扢㡡㝥挵㐲㑦搱㑥㍡扢昵昴㠷ㅣ㘹ㄳ扤挲㜱㍢攸摢㔴昴慢ㄶ晡慥〷㉥㐳捡㝦敢㐸搷㐴摦慡愲晦㘸愱搱㈴㥥昹户ㄳㅥ㜱搰愶搵㔶㌹㙥㈷散㕢㔴昴㙢ㄶ晡ㄳ㌶㠲攱㐷ㅤ改㥡㘱摦慣愲晦㘴愱捦敢摤收㙢㜷㍥昰㤸㠳㌶挳㕥散戸㥤戰㙦㔲搱摣户愴捤扦㜵㉥攱㡦㍢搲㌵搱㌷慡㘸㙥㜸ㄲ摤昳晡㠷㈸ㅦ㑦㙤ㅤ㝤㠳㡡㝥ぢ㐸㌹ㄴ㙡挷〸挰㝢㈸㜴㍤攴慢挷㠷㡢㈰㍦挸㔰攸㙤攸㔵㠷㐲攲ㅤ㌰㌸ㅣ㤲晤ㅦ㜷㌸㌹㤰挱捤㐱摣攷㤴㐳㤰㈵捡㄰㐴扣〷㉥ㄳ攵㌶㠱㝤㔵㡡㙤㐸晢㔷晣㑣㑤ㄴ昷㌵㠹㜶㔷户㘷摦㘷㝦敢搱㔱㕣愳愲戹㈱㑡戴ㄹ搶昹㉥㠳㝥搷㜱㍢㘱㕦慤愲戹㤳㑡昴㕦搱攸㥣昲㘶戹㜳㤶㝤昳㈵㍦慤㐶晦㔴㐵㝦㘴愱摤㥤戳ㄹ昳㜲㤷攷㠴晤ㄳㄵ晤戱㠵摥㜳昹㜷㌶晦㙢㙡戹㜳㌶慢㝥戹昹㜵搰㔷愹攸㑦㉣戴扢㜳㌶戵摤㔱ㅤ昳㉢㔵昴ㄶぢ敤㡥愹搹㕦㙥慡㐶㕦愱愲㌹昰愴搵㔸㝤㔰昹ㅤ㘹搹敢扣㝣㥢攳㜶㘲㝥戹㡡ㄶㄶ摡摤㌹㥢㌶昷㐰晦㔸㐵搷㔹㘸㜷㔸㑦㘰㈸㠶㑥戲㍡散ㅦ愹攸㝡ぢ扤㐳挳愱愳昶扡扥摣㌹㥦摥捤晡㜸㝤㌵晡㠷㉡扡挱㐲㥢改㉡㜷捥敥㈱㡥㤳敥换㔴戴摦㐲て戹㜳扥㔴㐵㜳昳㥥㌶㜷㜷捥㌵〷㐴㤷愸㘸敥晡ㄳ敤敥㥣㙢㜶慦ㄷ慢㘸ㅥㄷ㈰摡摤㌹搷ㅣ㤴㕣愴愲㜹捥㠰攸㕦㕥㌲㝥敦攷㈷㤷㍢㘷㌳扦㑦慢戶昹㠵㉡㥡〷ㄴ㠸昶敥㥣㑦愸㐶晦㐰㐵て户搰㔷晣㠰愳敦㜲攷散㙥㙢㥣ㅣ扢㐰㐵昳㐸〴挳㥥捤㜱攰戳扦㜱挲㌲㠷㌴ㅢㅤ户㠳㍥㕦㐵㡦戴搰敥捥搹㙣㈵㍤〶〶攷愹攸㔱ㄶ晡㐴㑥㤱摡捡㥤戳㠹晥㜲㜵搸攷慡攸㈶ぢ㉤挷㕥㘳ㅦ㜶愴㙢㜶㤰攷愸攸愰㠵扥敡扥〳㔱摣捡摤慢ㄹ昶㉡㐷㥢㤳敥戳㔵昴㘸ぢ扤㤳㉣㥡㉦㍢搲㌵㘳晥㝤ㄵ扤ㅤ搰戲㡢敢㘱ㄷ㘷晤㐵㠹捡搹晥昷㈰㕦摤挵昵つ摥挵敤〰扤ㄵ㕤摣㑥㘰挸慥慣ㅦ㐰㘷㘱㘲㔷㥢㕢㔴戹㔳㙣㙥㐹攵㑥〳㔷㐶㜵〰㕣敦摥昸㌴捦愸慥㠱晣㈰扤昱㕥搰㕢ㄱ搵扤挱㜰㝡攳㈸ㅣ㔶㙦ㅣ挳愳㑣挲昱㔰㠸㘷昹ㄵ㜱㍣戱搴扡敤㉤攷㝣ㅤ攵㠱戹㤳㝢愷愸昶㑦㔸㘸戳㈷昸戶㤳㝢㤸㠵戱挹㜴摣づ㝡愳㡡㑥㕡㘸㜷㙦㝣〰㘷㡣摢摥㕡㡤晥㥡㡡㑥㔹㘸㜷㙦捣㠱昵摡㍦㤷㕢づ㈷散㤳㔵㜴摡㐲扢㝢㘳戳㤷昲㐰㥦愴愲昷戱搰敥摥ㄸ愳㔳搴挰昲挰摣〹㝢㠳㡡收愱ㄲ摡晣挷㤸愴㍦昳愳敢㥣㜴㥡晤㡡㐷㕦扥㕥㐵敦㘷愱摤晤挸ㅣ〹昷㤸攴㝦㔵㐵捦戴搰敥愹戲搹挷㕤攴挴挵㠹昹㠹㉡㥡攷㕦ㄸ㜳㜳㌱愳㍣㔵㌶㈷扢㘷㔶愳㑦㔰搱捤ㄶ摡㍤㔵慥搹㔲㝣㐵㐵捦戲搰敥摥搸㙣愵㍣愶㉦挷慢攸ㄶぢ扤昴搵换搱扡㤷㝢㘳戳㜵㉥㔵挷㝣㥤㡡㥥㙤愱摤晤㘹㑤昴㕡ㄵ捤挳㐱戴摡㝡㘹昴㝢㥣戰捣㜴㉦㜶摣㡥捤搷愸攸㌹ㄶ扡挸戹㑦㜳㜹戲㕢戳㜵㕥慤愲攷㕡㘸㜷慤愸ㄹ昶㠰㡡㍥㄰㘸搹㘸㥤㔱戳搱㉡㐲扥扡㝤晤昶攰㡤㔶㍢昴㔶㌴㕡㡢挰㜰ㅡ慤づ㌸慣㐶㙢㈹ㅥ㘵愳㜵愶摡㘸ㅤ〲㉥つ㕡昹㜹㙦㑢捤㉡搰慢㈶敡㔰ぢ敤敥搶㙢慥戹昴愸攸挳㉣戴扢搱㌲戳攳扣敡捣散㔶搱㠷㕢㘸㜷愳昵㈰愷挵ㅦ晦戸ㅡ扤㔲㐵ㅦ㘱愱摤㡤㤶扢ㄹ㜲ち搲戱㉡㝡㔹㐵扡换㔳〸昷戰摥㐱㜷愹㘸㥥挹愲捤摤㔳〸㜳㔰㔸ㅥ搶㍢攸ㄵ㉡㝡戹㠵㜶㌷㕡㌵㈷㝤挷愸攸愳㉣戴㝢ち攱搶收㠴㕤㔰搱㍣㍥挶㤸㥢㌹㔴㙥戴㙡㤶ㄶ㐳㐵㜷㕡㘸㜷愳攵㙥扣㥤戰昳㉡晡换ㄶ摡扤扥㈷㕢愱敢㍣㍡挸㥣㡡捥㔸㘸㜷愳搵㜸捤〴ㄴ㔶㡦搵攰慣㡡捥㕡㘸戳㜱㉥慦敦搵㉣㉤ㄹㄵ捤戳㜵戴㥡扢挹攳敡㑦昷敢攵㜵㑥㈷摤㕦㔶搱㜹ぢ敤㥥㐲戰㘳晦晤挳㌷㔷㤷昳㑥ㄵ㙤㔸㘸戳㔶㤴ㅢ㑣㌳㈵ㅥ㕤摣搱㉡㥡挷〰ㄹ㜳昷晡摥㐲㤹㤴㜲㜷敢挴晣㈸ㄵ捤昳㠳㐴扢愷㄰㌵㕢㠷攵㉡㥡〷て㠹㜶慦敦搵散㕥㡦㔴搱㍣戱㐸戴㝢㝤捦㍤扣㜲㘲扥㑣㐵昳愸㈳搱搸戴㐰昱㈸慦敦㤹敤㥣挷攴攷〸ㄵ扤搲㐲攳㌶㑡㝥㥣ㅣ慡搹㌹ㅦ慥愲㜹戸㤲㘱换㍥㉡㕥㥥㐲搴散㘶づ㔳搱㍤ㄶ摡扤扥㔷戳㡢㍢㔴㐵昷㕡㘸㜳㠹攰搱慤挷晣㄰ㄵ摤㘷愱捤ㅣ㜳愳㍤愶㑥㑢㔵昴㉡ぢ㙤づ㜸㠷戰扥搷愱愲㔷〳㉤扢搷㑤散㕥㍤愷㉦〷㐳扥扡㝢扤㙥昰敥㜵㉤昴㔶㜴慦㈷㠰㈱扢搱㥦〳攸㑣㕦㌶搸摣ㅢ㔴敥㐶㥢㝢愳捡攵㌱㑡ㄹ搵㥢挰昵㥥扥戴㜹㐶昵ㄶ挸て㌲㝤攱〹捣㡡愸㝥ㅢっ㘷㈴挰㈳㤵搶㐸攰㉣㍣捡㈴摣づ㠵㜸㤶㕦昱㝤㍣戱摣戹〷㘲㌵摢昶㌹慡晤捦戶搰㘶㈹晤慥㔳㜲捣ㅡ㔳慥〳㑥㝤㙢㔵搱攷㔸㘸昷㐸㘰㔷㔹㡣㥦㜴戴㌹攸搹㉡晡㕣ぢ敤ㅥ〹戸㑢㤲㠳㙥㔱搱攷㔹㘸戳㡤扢挲〹㙢㍢散搴㜵扣㕡ㅥ㈴㍡攸㔹㉡晡㝣ぢ㉤㠵㉦扦摡㐱搷散㡤㥢㔵㌴㑦㤹搲收愶搵捡敤㘹捤ㄶ㜲㝦ㄵ捤攳愹㐴扢ㄷ搱㑣㙤ㅥぢㅤ㌳㔵昴㠵ㄶ晡敥㝦㑤挵㐲攸㡤㑥捣摤昹敦愴㝢㍦ㄵ㝤㤱㠵㜶㉦㈶㥡㘱㝢搴昵㝤㔵㌴㑦搲㌲收敥挵㐴ㄳ扤搸㠹㡢ㄳ昶㍥㉡晡ㄲぢ敤㥥扥搴㐴愷㔵昴愵ㄶ摡㕣㐴晢㤵ㄳ㔶㑤㜴㑡㐵㕦㘶愱摤㡢挵㌵搱㐹〵ㅤ戴㡦昶ち㥥收㘵ㅢ㈰捦㠸搴㠹㌸㠴㘴搳昴㘶㘴㠷㉤㘶愲㜱戸攴㈱㔴捦㠰㘰ㅢ㠳㉤㠰㡡㐳㈵㘲㤳㠵搷ㅥ㘶ㅢ攲搹摣㠵㙤㥤㍥昵挰捡愳㠳户㈱㍣敥㕢搱㠶摣〰㠶㙣㉢㥥〰搰㘹敥㙥戱戹㑦慡摣㍢㙣敥㔳㉡㤷㘷㕡㘵㜳昷㌴戸摥捤摤㥥㥥㔱晤ㅤ攴戵摦㠳搴㍣㕢㈳敥㠱敥㡡攸昲㈰慣搳攴昱㡣慢搵攴㍤㠸㐷㤹㡣㘷愱て捦㘶㤳挷〳慡㉣㠶收攷㙤愷㈸捣慡㝦攷搵敥㈵㍦㜴摣愶晦㝢㕢挴㘴㈵㌳挵㙦㉢搰扥㔹戶搴㠹㥤昳㍦㍥昱㐵㡦㡤搷摤㔴昴挳ㄵ㘸晢㙤捤昷戶昴摥扤散愷挹㤸挷晣㝦㤲㡡㝥愴〲ㅤ㜴挲扥昵㠱㌱㔷㑤㍢㄰户攵换㑦昹㘴㠷搸㔵㐵昳㄰㙥㌹摤㘳ㅤ昴戰ㅢ敦㝢㜳晤摢挵㙡昴㐴ㄵ捤搳扢㘵昴昶づ晡搴昵ㅤて㑤㤸敡㜱㐴㘰ㄷㄵ捤㘳扦㘵昴〴〷扤晣愵㔳ㄳ㌳㜶㈸て㔰㘵〲㝣戰昹捥㉡晡㠹ち昴㐴〷㝤㜹摢愵㠵扦扤攳㌱㜵摡㐹㐵㍦㔹㠱㥥攴愰ㅦ㙢㜹昶㡦扢捣昹㑥㜵扡㈷愸攸愷㉡搰㤳ㅤ昴㈹摢㙤ㄹ戳捤改ㅥ㙢㙣㍢慡攸愷㉢搰扢㍢攸晤愶ㅥ搱㝥搹て换挳ㅤ㥦晣㈰摤攳㔵昴㌳ㄵ攸愹づ㝡捣㐵扦㔸昱摡㌲㡦㌵戶ㅤ㔴昴昳㐰换㉡昸〶慢愰㘷㙢戱ㅤ攴慢〷㐷㝦㠱晣㈰㈳㡥ㄷ愱户愲晡昱㔸戴慣㘶㝦〳搰㘹㉤㜸晣㔹㜲摦㔲戹㙦摡摣扦慢㕣㥥っ㤶㔱㝤ㅢ㕣敦愸㌶㜹㐶昵ㅤ挸てㄲ搵晦㠶摥㡡愸扥㙢〷晦㉦㌵㜸ㅥて㤶㔱晤户捡摤㘲㜳摦㔵戹㍣㌹㉢愳晡ㅥㅥ扣ㅢ戶㘱㥥㔱晤〰昲㠳㐴㤵㠷㙥㉢愲捡愳戶㑥愳挶㔳戴㔶愳㌶ち㡦㌲戲ㅦ攳〱㔱㌴ㅢ戵㈶㌸㔸挱摣晤㜸捤㜱㕣㥤㕡㔴㜸㜶㤶㘸戳㍦ㅢ挲㌸㑥愸㘸ㅥ扡㈵㝡挸攳㌸㥦㡡收㘹㕤愲㠷㍣㡥摢昲扥㜲㕡㙣㡣㠵ㅥ昲㌸敥ㄳㄵ捤昳挱っ㝢挸攳戸㡦㔵昴㌸ぢ㙤㕡㙤〸攳戸㡦㔴昴戶ㄶ㝡挸攳戸て㔵㌴㡦㌲㌳收㐳ㅥ挷㝤愰愲㜹〶㥡攸㈱㡦攳摥㔷搱㍣㍣㑤昴㤰挷㜱敦愹攸昱ㄶ㝡挸攳戸㜷㔵㌴㡦㙢㌳散㈱㡦攳晥慤愲㜹捥㥢攸㈱㡦攳晥愵愰晤㍣昶敢㍥晢愹摣㐱㔷㜹㈶㤹㘷㌹㍥攳㤵㘶㈳㜰㙥戴㠹〷㜸愹㠳慦㈲晡㥡㜸㜰户散攲㠱㕤挷㈵㜸昰㤶㔱搳㐷ㄲ户户敤挷㔳攵㘲㤱敤㌷㡡㝥㍣㐶㈲㜱搲慦捦昶㙢愲ㅦ昷攵ㅣ㥤㑤摣㡦㉢扢戸て攷戸〴昷搳㘴㜸㐱攲㡥户晤愴捥㙦摢㝥愳改挷㌵攷㜲㜸㥣㜳㑢摣㌶昴攳㐴摡搱搹挴〹㜴搹挵㠹戳攳ㄲ㥣〰㑢摣ㄸ攲㌸㝢㉤敢攴㘰㔹晡㡤㠵㥦攰㌰㔷扡挶㔱㤲㘳㔷㐷㑢ㄳ挷慣㘵ㄷ挷慡㡥㑢㜰捣㈹㜱摢ㄲ挷挱㘲㌹〴㜶㠶搲㙦㍢晡戱㠷㜳㜰㑤散搹捡慥扦慢㉥挱㥥㐹攲戶㈷㡥摤㑤㔹㤲摤㑣搹挵敥挵㜱〹㜶ㄳㄲ户〳㜱㙣攳愵㥦戴㉥ぢ〶㕤晡㜸㍣搸ㅦ挱㙣慦收㌲挳慢戹捣敡㙡㉥㌳戲㥡换㉣慣收㌲昳慡戹捣㥡㙡慥捣ㄴ挶搷㥥〱㌱捥㠲㤹㔳㉤㑢搳㑢敥㑥㜸戰㍦㠲㐶慦㤶愵㐹慢戹㌴㔸ㄵ㌷㘸㥢㉡㘸敢ㅤ晥晦〰㍢搶㘰摥 | D27: 㜸〱敤㕢㝢㤰㘴㔵㜹敦搳搳昷㑥㥦㥥㔷挳昲㄰ㄶ搸〱㜷ㄳ㘰㘰㥣㈷戳㈳慣扢㌳㍤㍢㍢㈳戳散戲戳ぢ戱〸㜶㙥㜷摦扢搳㙣摦敥昱摥摢扢㌳㈴㈵㐹㐵愲㈲㈹ㄱㄳ㉤㡤〴戱㝣〴〲挱㔰㔶㥥㈸㈴捡㈶〲㐶㔳㔲㔶ㄹ愳㤵㔲㑣〹㈲㤲㤲㍦愸㔸攵收昷㍢昷摥㝥昷捣㌲㉣㤵昹挳㌳搳㕦㥦昷戹攷㍢摦昹扥摦昹敥改㠸㠸㐴㈲愷㄰昸捤㄰㘳攴愲挵㔵搷㌳敤挱㔴愹㔰㌰戳㕥扥㔴㜴〷愷ㅣ挷㔸㕤挸扢㕥〷㉡攸改㍣捡㕤㉤敤收㙦㌷攳改攳愶攳愲㤲ㄶ㠹挴攳㌲捡㕥㠲㑦㌲㑣㐸戶㤲捣㤶愸ㄵ㤱㍡㐸㜷㈷挸㘲㙡晡㐰收㌶っ戲攸㤵ㅣ昳慡晥㥢晣慥㜶㑤っ㡥づづてつ㕤㌳㌸㜴㔵㝦慡㕣昰捡㡥戹慢㘸㤶㍤挷㈸㕣搵㝦戰㥣㈹攴戳搷㥢慢㠷㑢挷捣攲㉥㌳㌳㌴㥡㌱挶㜶づ㡦㡤㡦㕢㤳㤳㍢扢攳攸㜸㝦㙡晡愰㘳㕡敥ㄹ敡㔲戲换〳愹改挱ㅢ㑣敦っ㜵㤹㐰㤷㌷愴愶㘷㑡戶㤱㉦㥥㤹㍥㌵戲㜹㝣挶捣收戹ㅥ愶改攴㡢㐷〷昱搰㜵㑣㐶㙡㘲㜰捡㜵换昶㌲㤷㌶㘵ㄶち㠷㑣㡢㍣㤳昶㡣敢ㅤ㌴ㅣ摢敤戶挹㍣搳㌱㡢㔹搳敤戵昷慥㘴捤㐲㔰搱㡤摢㌷ㄹ捥つ㠶㙤挶ㄸ改戳晤昵㥢捦㤹㐵㉦敦慤昶搸㐷㕣昳㤰㔱㍣㙡戲㡡㘶敦㉢攷㜳㈲ㄶ挳㝦愴攳㌷㕢㍤㤹㕡㈵㍣㡦㥤㕡㌲ㅣ㑦愵昸㉣挳慤敡搶㠸㡡㥡㐵摤㜳㔱㥣晡ㅢ㕡㜱挵ㄶ昳昶昵愶㔳㌴ぢㅣ㠴敢㌸搰㔰㐹㌱挸㕦㠶ち愷挲改㜰㤱㐴㔷戰ㅦ㌸ㄷ㡥愲㜷㤱愴捡慥㔷戲㘵㌷攲戲㠷ㄹ扤㈰ㅤ㜳㈳㘳戲㡦㔹㐹㄰ㄱ晢㌹昶㔶㙤㜳戶㡣愶㡤㘸㍡ㄳ㑤㘷愳改㕣㌴㙤㐶搳㔶㌴㝤㌴㥡㕥㡡愶昳搱昴㙤搱昴㌱搴〹㐳扣戳㌳ㅡ㠴㤵戳㡥晣摥㍤㈷挴挲ㅦ㍣昷㑣收愵㠱ぢ摦慤㜱㍢㡤戶㥡㑢㈳㥢㘶戱戵戲㠶敢〵㉢挸㈹㥣搹〵㕥㝦㝤㘷㥤散㥢扦扥ㄸ攴㡣慣慦㍣ㅢㅣ㤲㕢㐰昴㜳㐰㉥㥣㌶㕣戳㍦㐵戲搷戲昲搹㍣㜶挵㙡晦搵晤晢㙦㍥㈰捦㘵捤昳㐰㠴㜸〱㑢捤攵㝥昹㈷㝦昹攰㕤㕦扡昲晡㍢慦晣㔸昴愲攷ㄷ㥥ㄶ搴㜸㑡晦㜱昱攵〵㈴ㄷ㠲攸㕢㤹㍦㌷㍣㉡㉦㘲搶挵㈰㐲晣㌰攸㈴昳挴敦㥥㝣散㤹㐳㝢晦攸扡㑦㈵㔳㉦㍦搵㈹愸㌱㤵晥摣挶捡晤㈰晡愵㈰ㄷ戵㜹戶㔴挹捥㤴攴㘵慣晢㔶㄰㈱晥㌳攸昸㠵扢扦昵昸㜷捦扢敤晡〷㤲㡦晤昸戲㝦戹攵敢摤㍢㔰㝣㘳㈰攰㌳㡥㜱〲㉡愳慡㡣㐶〶㠷昸户扥づ㠶ち戶挶慤〹㙢㜸㌸㌷㍥㘴㡣ㅡㅡ户挵改敥㜷㙥㤵㙥敢收㝣㌱㔷㍡愱ㄴ㠰㥡㔵㔵㕥〶㠲戲改㔲戹㤸㜳户㜲捡捤㠵㡢㥥攱㤹㙡愹㙡换慡昱愶㘶㡢㔰㡦愶慢挶扢愴戱换㥢㡣㐲搹㥣㕡挹晢挵ㄷ㌷ㄴ㐳㌹㤶㌲敤㑢㘷ㅤ昳㍤㤵搲愶㈷㥡㠲㐱㍤慥晡㙥㥡愵㕦攴㍦㔷㝦㙡愹攴㥡㐵昵㜸〳昶挱㝣昶㤸改㉣㥡㌴挷㘶㑥㑤昵㕣ㄶ〵ㅡ㝡攰㐰ㄱㄳ㠵捥捤㕤㔶㥢㙢敤㕤昱捣㘲捥捣攱㜹㤷㑤挷㕢㍤㙣㘴ち收㜹㜵㔵晣㌱㔱㜰㐱㕤昶㙣㈹㕢㜶㔳愵愲攷㤴ち昵㈵㔳戹攳〶慣㐲㙥㝦㈹㘷㐲愹挷ㄸ㈲㈲搲搱㈱㐴攴捡㔶摡㠸晤扡㠳㙡㈱㙡㤶㤸㍡晥㉤昵㘲㌷㜸〸戳挳㉣ち㈶㘵㌲扡㝤㥤捥㔴扦散收㡡昶ㄵ㙢收㐴散挲摡㤷户慦慤㥥戱戲㜲㙦㙥攵㘸㜴㑢㌰晢扤挷㘱㌹攷㡣㘲慥㘰㍡㙢㈲㉦挱㈷㤲扦〱愲㝤ㄷ扢戹㉤昷愸㈶挴㡡㔸搵㑥攴㜳摥㤲扥㘴收㡦㉥㜹挸〳㍡㡢挷挹摡愶㈰㉦㐷㤶扣㠲攴㑡㤰㐴㈲愲て戰㤲㥥㤰㔷昹㘹㡤ㄶ敥昵摢㘴攲㍦愹㌰〰搰㥡慢搹戰㐴㙥㐷㐷慢㔹捥ㄹ敥㤲㐷昱㕣戳㤰愶㑢㕥㑤㌲〸愲搱搰慥㙢昲㔹㈹㐶㘴搳㘳捦㤸㤶〱㌰愹㜶户㌰㌴摢㠷㈸㌳愶㥢㤵挴㌲昳搸㉢㉢㍡㘲搸晣摤㌶愵摦㕣昱㘶っ捦攸戴㠱㡡戰㑡ㄲ㤵〶㔴㉢㍦挶㤶㍤㉡㉦㙣㥤〸㔲攸㈱愹愲㌵扤㜴愹っ扦㈷㙣ㅣ散㤷㐸㐷㐰搷㥥〴㥥㥤㜶㑤㙦ㄴ昴㝡㜴〳搰㤵摢㘷ㄶて慦㉥㥢㉥慢挷昵㌵㔹搹戸扤搸搹㠱㙣收㠸㤷㉦戸㠳㜸搲㝤㑥愹扣㝣㈶晢㘱㕦昲㙤㈰㘱搰扥〵㈹㍥晤㌹昱㘴搲㜹㥣㙢㤳㑥㐷攲散㡤㌹晡㌰㠸㐲㕤㤴㔸㜴㜸ち㕦㉡挸㔱㝣㈵㈴换㘵敢㌲㡤㠶攷昵愰㐱㕡昲㙥ㅢ㕣㍡散㤸ち摦挶㔵〲ㅣ敦戱㙦㉥㌹挷㌲愵搲㌱捡㔴慦㑡戹㑢愶改ㄱ㌳㜶〵ㄸ㔹㘱㘱㈱㍡㍡敡㄰㘱つ戸㈴摡搴㈷㐰㝡愶ち㠵晥戰㐷㔷摦㠹慣づ愰㔷㝤ㄲ㤱昳㠱㍢搲ぢ愹㔴㝡㘴㘸㜸攸敡愱戱慢㠷㐷〶㔷ち慥㉤㑥㘲昲〴㈰搷晦愰㙦搷昹㐳搷捤㍤扣昵搵捦摦晥戳㤳敦ㄲ㑦〵〵㑤〸㤲㌸㘷つ㈳㕤〷摡㠸㠴敡㡣㜴户㌵㥢㉦㜸愶愳昴㜰㥦㠵㉦晦搸愱搲㍤戴㍤㡥㤱昵〱晤㌹㔶ち收〷挷ㅣ㙦戵㙡㤰㥢捣㥦㙦ㅤ㝥㙤攴㌷㥤㤱㔷㈶扥捥搰慦㘱㐴㈱㌴つ㘶㝥敤捡㌵㐲㐴晢搶㜲㍢㉡㤱ㅡ㐴捦昵㐲挶晡㡤晡㐳ㅤ收㉡昵㙢㠵㤰戵㠷摡ㅢ㝦ち㝢戳㤰戲㔱㕢㐳晢㙢㤸搲捡㐱攴挳㤴敢挰㌸戹㡢攴ㅤ㈴扢㐹昶㠰㠸㈷愰㡣〸㕦㄰慦て㜲ㅡ㘹㤹㈲㤹〱〱〸㔱㙡㕢㑦㈰㐴〴㑦㘳挴㈰㜲㤶㘴ㅦ㐸昷ㅣ挸晥㌹戳〰㘸㝢㠶摣㍣ㅡ㡦㜳㙢摢㘲㠸〹戵收㜹昶攲㙡㌱扢攴㤴㡡昰㠰ㄱ㈲㑣㘵攱㈹㜱㠵愱摢ぢ愵㔴搹搳敤戹㍣扥扡敤㐳收戲㘹㜸㈹㥣㕣㠰㍦ㄶ㜰〸㔷攸㘲㍥户昲晦㠹㍥搴㐹ㄲ㠷挲㉡〰ㄱ㡤㥢搴挷〱〱㜷〷㘷㑡㜰戹㤹捡〷㐸慥敢㍡㤰攴㈶㠴ㄷㄱ㌹㡦愷扢晦㝦ㅥ扡㜶挷㝤㡦㥥ち扥敦㠰戰愹愰扦ㄳ㠵㙢ㅤ收㥢㔰挲〲ㅡ㈴㈴㥢㌵㈳〸㔵㈶㜸昴㈷㡡㤰戴摡晡㡤㈰ㅤ㤰㄰㐹㍢㉤ㅥ挱愸㉤敤昱挳㐱㐱㤳愷㠰扥〱ㅥ㥣攵ㄱ戶㝦〸搵㕡敦㤴㥢㔹攷户㐸摥〵㔲摤㈹昲ㄶ㍦㈹攸㕦㔰扢攵户㔹改㔶㄰㐱㈷㠳㜲㑣扤ㅢ㤱㌰㠸〷㌰〶㘱㤸㠲㔲扦㠳㙣攵㤰㘸㘲㐴〶㈵〹挹昲㘶㐶愸㌲㐱昷㐵㠵ㄱ㤲㠰挵㘷挲挷㠳戹㌶㠱㤲㡦〵〵㑤㥥づ㍡㌸㤴〳收ㄸ㍢㈹㤰搸㈴㐵㤲ㄲ㠸戸〷㑤㕢㌳收㍤慣攳㤰戸㈰㔵挶㈸ㄵ搲㡦㉣挵㤴㌲㉢ㅣ〷ㄱ㤷㠱㜰捦㐷攴〹㤰戶㠲戳㠲挲戵㍤㉤㑤ㅣ扢ㅤ㑤ㄲ㤲つ㥢㌹愶捡〴晤㌲㔵㡥㔱㜴㝣㡥摤搱㡥㘳敦つちㅡ㕤㌸ㅡ㡦㠴慦攳攸摤挵愱慣㥢昲收〹㥥ㄵ㝡㉤㌸㙣㝤㕦㈶愱㙢㡦㌵㔳扡愱攴捤攴摤攵㠲戱扡挵ち㈲㌷㉦㤹㐵戸ㅤㅣ㜸ㅦㅡ昲㑡换换㘶㑥㕡㡢愵戲㤳㌵攷㘷㌶㠳㕢〲昳挳摡㉡㡦㐴㔴㈰㙣散愴㡤㉥〴㐴㠸愲愳㕤㡥づㅢて㑣㌵㐸愳ち㙡戹愰㝤㔵㡥ㅥ捥㝢〵戳换㔲攵㉡ㅥ户挰㐵昸㜲㜲㥤搶攱㈵ㅣ㈲㘶㝡慣㝤㑥㍥㔷挸ㄷ㑤㉥〶㠰㌲扤攰ぢ收㔱昸㙤づ㤶摣㍣㍤昴㍤搶㘱挷㈸扡换㍣㠲㘶㔷捦慥㑢㈹㙢愲㔹搳昹愲㡢㘱㤴㐷㥡昱㍥㙢㜱愹㜴〲敦㙦捡㜶㜱㥦戱散㙥㡡㔵愱㡥昱㠳㕡ㅡㄱㄵ搱愸㠸㐷攳ㅢ㕤ㅦ晤て搱摢ㄶ㝦搲晤㤰㔳捦挹㘷捡㘴㤸ㅡ㘴〴㌴㐶愲搶㌰愲㕤㠱搸ㅡ㘰㤱㤰㌱昰愶搱㔳挴㘷慤昳㤱户㜴㕡㔴㕥㡡ㄱ㈶捡昷戱捤㥤㈰昳晢㡥捣㔷㝤愸㙦攴㔵㤶㜶㈵扡㙢㌴捤㡤㠲㔷昱㔸㔱㤳昵晡ㄲ挴㍣ちㄴ㌶㈶〴㠱愹㐶愹㑣㔸慡づ〵戴户ㅡ㥤㠵搳愳摢㕡㌰㌲㘶〱扥ㅡ摢昰㝡晤〴㜱戳㙤ㄴ摣愰っ敥㘵摢愰挴㔱㕡ㄷ戳㐶挱㡣㕢㔳㘵慦戴㍦㕦㤴ㄶ㠸ㄲ换㈰换㔸㐱㤶戱愲戲扡慤㐳昴攱慡㌸晢㉡ㅤ㌵㥣扣户㘴攷戳㜱㈶攸㘷摤ㄴ愲㡡扤㑦㉦㕡ㄸ㐲㔵搲〸つ㝤㤰㠴搵ㅥ挴㤱㠷慣攳敡㐳愰愳㐲挷㥦搸愰㡢て㝡㐷搹っ昹㝥昴愶㐵㐱愰挳晣㐷㜹㈵㝣㔱晢捡ㅤ挸㔱扡㐹㕣挵ち昸挸て㠰戰㌶㍦戱慢㐱搶昴晦搰㤵㤶㔸㈸ㄹ戹㔹㥣搲㑢㑥㘷昰收㌵㡥愵愵愶㜱㤲昴挸愵攰攴㠵昳昸㜸㍥㘷㍡㜱㘶㉣〲敥挶攸换搳晤㌵〴㘰攸㠸㘸㕡㔷扣搵㔸昳㘱㕦摢〳ㅦ㐷敤ぢ攵昹愶晥㕦扡㜱攷㙥㑥㈴㤱㔰ㄶ敡㠳㠸捡扢㐰〴㝤㝤㥣㑦㐳㠵て戱挲摤㈰ㅡ扤㑡㡤㙢㔳敦ㅣぢ㕣㘸㌱㥡戸ㄸ摤㜶㜱戸戸㤴扦㑦㔳ㄳ改慡昱搳改扥㡢㉥ㅥ扥っ搵ㄷ㈱攵㘶㉥攱㙢ㅡ㠲㝤㉥㐷㌴㡡㌷㥡㜱扤搱㝤搲㌴㉣㍡戳ㄷ㑤攵挰ㄳ慤㤸㔴搱㈱昴㘸改㝦っ搲挵㥤㠴挱搳㝣㤷搸〸㉣ㄲ〹昹㘱搴㠹挸㝢㐰〴㕤㕣㈱㘷㈸戰〱敢㍥挲ち昷㠲㘸㍣㠶慤愱㍦㠰㔵㙢づ敢扤愸慣㕢㐷㡡㜹て㕢㥢て㌱㥢昷昰ㅣ摤ㄶ〸愲敡㔴㝤愱摡昲㌵㡤〶㉡㐸㘲㕢㜳㔱ㅤ戴戸愴戹扣ㄶ㙢㙣㙦㔱散愳㤰ㅡ昰戱㕥㈵㠵㐶㕡㍣攳㘶㠲㈷挲㍦㝥〵〸㐵散㘸敦㤳愸攱㍢㉤捣ㅢ〰㌳晡㐷搱扥ㄳ㈷攵㉣摣搸ㄱ昹㈷㐸ㄱ摥㠸〰摦昰愰扥戶㤸搴戸㘹戸㍢ㄳ挴㌸㝥㕥㑦攰〷㥣㉦扡㔰ㄳ㠹㈰〵㈳搰ㅢ㐴て㤴扤扡ㄲ㘳㘵㑢㔰〲㉦攷㠱㈲㉣㜷搶㜰㜲㥢㐴敦㘳㙥㍥㍡㔱㉡㝣愳挸ㄱ扤㈰搴㘸敢〰㠴搰ㄷ昲㝡㍣㕣㍣戰昵㤰搵ㄵ挷㔷㥣愹晤愶㔱㔴㉢戰攸攵㘶捣攳ち挲ㅦ昴搷㌶㕦㌰户愸〶㤵愴搲㙦搲㥡捡戸㠰㠳ㅥ㡤㝤㄰㔳ㅢ㕤㕡㠷捣㠲挱㔷㤲戰捤㐱散㘰搶㠳㍦户搲〱㕦㌷㙥㥥搵〱㐷㘲挱ち〹戵㐶晡ㅡ㠲㕢㍦〹敥愱つ慥㈸ㄴ扥愵挲换扢挵㈷㍦挱昰攰敥㐸ㄸ〹㌶ㄱ㝤㕣㙢㈰㑣攸摡㕡㜷㈴㜷搱㤶搰㑢敥㙢㌸愵扣扡挳㍣挲搰ㅥㅥㄷㅣて敦攴㜹㜷愳㡦摢愶〰㐳敤攵〱戹ち慢扤搶㝣㌱㕢㈸攷㑣㠵搷㐲㥤慤㘰摢愶㔸㉦㜵㤹捣㕦慢㌵昸ㄲ㌰㘵ㅥ㌷捡挲㜷戴ㅢ㍦戳挹㍦〵㕢㤵搱㐴ㅦちㅦ㘹㝢㤰昳扡晤扥〹㌴㍡扢晡搶㐲㕤㘸㠲㑡㙢捡愲㉥愳㔷慦攲㍡㔶扢慤愶摡㐲㘹愱挴昳㕥㑤搶㕣摥捦摡ㄴ㙢㠴㜹晡ち㑦搷㠱㔸㌷戸㍢搸〹戴㥤晡㡡扣㜲㐷昰㡤晤攰㈳搴㘹㘴㕣捥㑣㜰ㄵㅢ㠹㠷戲㘸昵㘴㈶攸昲攵改㑣㝥ㅣ㐴搰昷换㔳て㔱㌰㡤㤶晣〴挸晡㈸㤸㙥攱㄰〹㈱ㅡ㈲愱㑦㈲㉡晦っ㐴搰㘵摣愲挲愷㔸攱㍥㄰㙤ㅥ愴㔱㤵戴昵㠲㜶戰㠵㑤㉣ㄸ户㠹㠹戱ㄱ㜵扣㌱㠶㤷ㄷ戸㕡敦㡡捦戱摢㍦〷昹挶戳捦搲戸㐶挴〲㐸㌸㝥つ㔴扢ㅦ搹昲搳慣㜰〴㠴㥥ㅣ捥㕣㌱づ㕥㙦㍡晡ㄴ攷昴〷㄰㍢摤戳慥愰㙢㔰㜱昴㌳散㡤㍥挲㤰愳㠴㤳昲戳㈰敢㜳㤴扥㐴慣㔶㐴㝥づ㈴㍣㔷〸㍡ㄴ挳㘹戰㌴㐰㥣㥦㘷挵㉦㠰㠸㕢㕢㔷昸ぢ㔶㜸㤰ㄵ攸㝦㈴㘰搷ㅦ〲愹㘲㕤摣㠳㙡㠱㜵ㅦ㐶㥤㠸㝣〴㐴㘴㐰挲㤱㌵挴㠳㤱晦㡡ㄵㅥ㘵㠵㘳㈰挴扢晡ㄷ㐱慡㔸攷慦㤱慡挱㍡愲㠰愴㕡ㄲ收㈳㌴㔹㘹㘱㈳㤷㤶㥡搳㕦㑦敢ぢ㝡ㅢ㈰改㜸㠸挷㐸㌸㠷㔰昵㠸ㄲㄲ㝢昰昱㐳晢つ㐲户攵ㅡㅢ挴㐱戱㕡捥㉦㈱㈲攸搹っ㤷㤳㌳㤵㝦〳戲晥㜲㤶㔱㉢㘴ㅦ愲㈱晢晥ㄶ㔱昹㜷㈰㠲づ搱ㄶㄵ晥㥥ㄵ晥㠱ㄵ攸㈲攵㈶㤱晦〸㔲㤱㙢㍡㌳挳㘶㌵㜲晤㌸㉢㝥ㄹ㐴扣㡦㠴愹慦〴ㄱ㈶戴昷㠳㌴ㅥ搹㥡㡥搳慡㍦㡢〷敢㐵㙦戵〰㘷〶愳㍣挲昹㌱㙥㍣攰㑤攴攱㘰㔹㜲㘰㙥㘲㡤敦敡㉡㙤㜷㘰扣慥㜳ㅡ㉥ㅣ愹㘶㉣戹㤳㡦㌴〵晦㙡摢昶㝣攸敡敤〳戶㘱搰㥦〴㌹㘷㝦㍥敢㤴摣㤲攵昵㉦挲㑦搷捦ぢ㕣ㄶ㙣捥㤴戶ㅢ㍤戶ㅣ㤳ㄳ㡢ㄵ㌱ㄱ敤㌸㉦㌴㈴㡥ㄵ㑢㈷㡡敡㘹㌴㤷昷搸ㄴ扦㍡㍢㌹㑣〲ㅦㄵ摥ち㉥㈶㍦㠰㈸ㅢ换㝦㈶昹㉡㐸㑦㌴昹㐱㝣戱㠵晥㌵㤰ㅤ愹改搴愱戴㌵㌴㌲㤲扤㘶㜴㜲㜲㘸㙣㘴㙣捣捡ㄹ愳㤳㈳㈳愳攳ㄹ㜳㝣搲ㄸ㌶㜶㥡挹扢㠲㌶昲㈹㐴㤲ㅦち㔳㈷㤹扡㍢㑣戱㑣晢㌰挸改㥥㜲昹㘸㈲㈳戲㈲㈷捣㔸㘷㘷搳搹愶改㜴㕣戹慤愲敢㤲㠳敤〴挷ㅡて㐴慤ㅢ搵㉦〸ㅢ搳昷㉡扦㑥昲㌴㐸㐲愸ㄳ㌲㤳捦㠰戰㍡㍦㐹㥥㡤愹扤昵㘷㐱捥㑡㑤愷敢敦㉦敢摦㐰㜶㌷戲㤵㈱㍦㠴慢㙢晡扦㈱愷ㄷ㌹㌵㉥挲攴扤挸㘳㉦昲㥢㈴㍤㈴摤㈰ㅡて㔶㡤捦㕦攳慦慢㌹搰挱㑥㐴㤲㌵愷㙣挵㠹戳慣ㅢ换㐶〱搷愸て〰敡㜹捣摡っ㈰㈱收〳敥㜵㠵㐰㑤攱㤶㕢戹ㄶ㡤㍣愸㕦挳㘰㙥敡㥡搲挶㈰㐷㐲ㅢ㕣㔷㔲挲㔱㥡㈵㠵㉢攷㠳㐳挲挵搳挷愶散㘹㑢搵㠹㐵㜷攵㐰〱㌰晤㌴㥣挳摦㐶㔳愱〰づ㈲昲㌹愶昰攱㠳〸〲ㅣ慡㐳㌱㠰㈹㔱〹㈱ㅥ搱扦〳搲㔶戳㠸㉢㔰㙤㌷㍥昵摡㠱㘸㠷㈱㐹挴挳㤰㈴扣㘱㐸摥攷㝦㐷晡〸㑡搸㑡て㌲捥搸㔷㤲㔰㐶敤〹敥㉣挹㝤㈴戹㜵㤲㥦〶㔱昹摦㘳搶ㄶ㤲戳㐱挴㘷㐸㤸晡㐱㄰㘱㐲㝣ㄶ㐴㜱攳㔲㑣㉦攴㠶㝣ㄲ戹㔴愹㘲ㅢ㜲㜷攳㔳㍦昱捦愱㔰愹挵ㅦ㈲㈲㝦〴〲戵㐸㑣挲㉥昵攷㐱㝣戵㌸㍡扥㌳㌳㤹ㅤㅤㅦ㥦ㅣ㥢ㄸㅢ捦㕤㌳㌹㘶㘴㌳愶㌱㌱㤴㤹挸㑥㡥㡤㘷㤲㕦〸摡挸ㅦ㈳㤲㈴㘸㔱㑦昸摦㑣㍤ㄸ愶㔸㈶ㅥ〶愱㙡ㄴ㙦挱搳㔰㙤㈹昵昳〲㜲攴㡢㈰〹昱〸ぢ㤹晣㈹〸攷捦㑦㤲㜰㐵㌱愳㠱㐹㡦㠶昹㍦㐷㐴摤て㔷㌷挵〵搱ぢ㤵㑡㐲昴㘲っち㍤㕢晢戸㥡㠰㠳〲㉣㝦〱㈲ㄴ㌸㘰敡㔵愶昰㘱㐵㐱㜰愰搸搹㠵愶ㄵ㜶㔲戸ㄴ㍢㈵㜲㜷攳㔳捦㑥㠲〲㠶㈴㠱〱㐳㤲㈸㠰㈱㐹㈴挰搰㐷㄰昰收挸ㄱ愱㐳㉢ㄶㄱ㑤愸晣㕦㈲㈲晢㐹戶㠱㈴㠹㉢搴攲晦ち㤱㥥づ㡤愶昱摡昶㑥戵ㅡ㌵㍥㠰戳㘷摤〵改扤戸昰扣ㅡ㐵晢づ昸戸㝤捦㜰㉣晡昶㡤昵㐵㙤ㄸ㐷㔷晣㘸〲㍣㝥〳晤㜰㌹慢攸㠳㍤㜲收㤲换㉣扥㡡ㄸ愷㉣㑥晤ち敦昱㌱㡥攲㔱ㄴ㐵ㅡ敤㜷换愳㙦攳㉦㐴㙡㝦㐸㐳挵㜰慥㍤敦挲昶攱㘲捤攱搲㔴攵搷㍣㘷㠵㌶㜱㈰扣搲扢愳㥡ㄳ㝡㤵挲㘶〷㥣㑡㍢㕣㤱〵挸㐱挱〰㉦〰㥦㕢㑤搵㌸摤户㔶㜳攱㐸㠴㡢挳捣㠵㍤扡〰搴戱㘸㐷ㄳ㤸㔰㜶㌵晣摤㡥㝡昵挹昳ㄸ㘵㜲㙢㡢昷つ搳㜹㑦戹摡㍢挹㉡昹㌵㔰㥤晥㠹敥㕤摢昷㙤ㅦ㥥㜸晢昶戹敤㈳挳摡㉦挱挲㐶搳搵㝡㤸晡ㄵ攱愰捣㤱㍡愸散〴ㄱ㈷㤱㘴㜷捣敥㈳㉡攱戲㤰户㌵攱㤵摤㐱㘲㑦摦搳㠸愹ㅡ户㡡㑢敦㥤搲晥敢㡥挶换〸挹㄰挵挸㌸扢晦㈶敡㉢㡤㌳㠱㐸捤㝤㡢㔷㌱㘴换㑢㈷扦〸ちㅡ㉦㠱ち㘵㤹搸㐹㉦ㅦ㌵〸㐹㕡㈸戵愹晡㤰摢搳㈱愸扢慢攳摤㠸㤴㝦㕢攱㘷敤挶㝢㈹㈸㘸扣攴㤲愴戶㔷㍤㥦敢昷㑣㤵慤攴昷㐵戴愰晣㉡搱㍥㥦㤳晣㔱㔸昴㤳愰㐸㠹昶〵㉣愲づ愶㜸ぢ昹㍣愸扥ㄵ㜹㕤㕣捡㙢戸㤲挳㐳攲㜹戴〸搹㉦㉦㐶愹扣㠴捤愸挸挳散㍥㉡敢戵㔷攵挵戰㐶摢㔵〹㤵扢摣挶㌱晡㐹㉥攵㐰㔴攳㔵㝥敤㐴捡攷搷昷〲戶㌴摤㠷昹㡦愰愰改㍥㡣㔲敥㙣㕦户㍥㔴昲㡡㡢㤷㘳㌴慣て㜵㘲㜵扣敡晡㍣搷㙥扣㙦〷〵㑤户㐹愸㐵搷扢㑤㔲昳摢㤹㍥㔴搷㉣ㅥ捡扡㉣㍦㥢㡡㑦扤〶㈸愸ㄳ㑤㌷摥晥㍡昸昵捡〲敥㌸攰㥤㉦㝥㡥ㄷ㈰㙥摣㝤攰㠶つ摦㉦㑡㤵㘲㘳摤㍡攰攰㠵㘳愷㌵敦挲搹㥤㡢攳昶扤㠷㡢挶挵捤㠰㠵㜱挶㡣搱㐰㐰㜲昸㡢㤷㘸换攳摤づㄴ㌷扡㤲㙡㑥〱㔵㝥㠴づ捦㈸㕦ㅡ㙦っ〹敢㠳㄰㠰搰㌳㤴慢戹〵ㄱㄳ晦㡥㈵摥㡤つ㤵㠸晣㝥攴㤴㝡㘶昸㜱攴㄰敡敢挳㈰ㅤ戸㔱慥戴ㄶ〸㕥㉢づ愰㠶㈲ㄱ㡤戹㡤ㄳ攳㘱㝢㤶㌳㙦昸㔹㐹㔷ㄷ㘷ㅢ〶㡤㜶㘷愲挱㘰搶㠳㝦晦㌵慡㔲昷〳㝥㍣㜸㐵敡愲㘹㡤㤵㤳㐸㌱㐷愳㑥扤慣愱换㕡愵っ挱㍡㘶ㅣ㌵昹㙣㜲摥㥤㔹挵戹㍡㥦敤㥥㜷㔳㘵扢散扦摡㐰㐷挲㔷搱㌱敡收戵捣〳昵㐱愷㥤㌶昸㜳攷戸㥤㉥㤸挵愳摥㔲攵㈷捥㌰ㅥ戸昹㈸㐷搱〹㌷ㅦ㍦ㅡ搵㜱攳㘲户㥤㌱つ㐰昰ぢㄳ㘹敦つ㙥㐲㘸敡〷㘵㜱愶昹换㌲捤㕥昴捣攵㉥摢㘷づ㌷〴ㅡ㘱㌰㜸㘸㜵㝤慣㠱ㄱ㙤㐷ち㜸换收敡㥣㐵㜶晡攱散㍤晥昷㙢㠱㑣㠴㔶㈸㑣扦㜶㑡㝢ㄶ㤲戳愱㤱挰㡢ㄶ㑢㤸っ㔵㤷愰㌵愱㠲㔱㠲ㄶㄵ㑦㠷ㄲ晡搳㤱ぢ慡ㄲ㍡㠱㑡〹愱㜶㔹㠳㘴ち摡っ戶搷㈷ㄱ㘹㉤昵㈷挳㍥敢愴晥㕡搴搷慦〳㘹㉢昵㠲㈶挷摦て昸㘶㤴㠶㠶昲慣昲㘹㐳㈸㠹㜸㘹㑡㑢㐲㌹㤲敦〰〹攵㐰搰〰㔰ㄶ晣㔰㘵敡晦扥昷戶挷扤㡦晥敢㙥㍦扦捡㘴昱㑦㜸㔰㌲㥡㙤㐴㝦㕤敢搷㉡戵扦㜲晦㠵㙦晢晥昶敦㔴搲㘱㉦攲挹摡搶㌴㌹搵戱㤳㝢挲㕡㑦昵㝦搱㔹晡挸昷㥢㕢㍦㔱摢㥡㈶愴㘶㔱扥㡣㌲愵㌶敡ㄶ㘵〶㤵㕡㉦㡡㐶㡤搲戸〳摡慡㍢搴摤攸ㄹ㝡ㄶ㙤晢戸昷搸㐷㥣㠶㐷㔰㔴㌸扣摣挷㙣㉥戲㑡捤㈱搲挷搵挱㝦㔰㤳捦慦捡收㤹捤慥㔸㈶摦㐹ㅡ〴愱㍡㐱愲捥搴ち㜶搶㕣㔷㜵搳㔸㌷ㄹ㜶搷昵㝦愰㐷㥢㐷 | E27: 㜸〱敤㕣摢㙦ㅣ㔷ㄹ摦㔹㝢搷㍢㙢㍢㑥㘳㈷㙤㝡㐹摤愶㉤㉤づ㕢攷搶㡢慡㤰晡ㄲ㈷愶㜱敤㘶㥤㔴愸㉡换㜸昷㡣㍤捤㕣捣捣慣ㄳ户㠲戶㔲㈵㄰㤷〷㐴㕦愸㄰〸〹㔵昰㠲㔴ㅥ㄰攵昲㕣〹㔱㠴㜸攰〱〹愹扣昰〲慡㈲昱〷㤴摦敦㥣㤹摤搹㕤敦搸搹戶攰㈰ㅦ挷挷㘷捥昹捥㤹㜳捥㜷㍤摦㜷㈶ㄹ㉤㤳挹㝣㠴挴扦㑣晤㉣摣㕤摥っ㐲攱㤴㘶㍣摢ㄶ搵搰昲摣愰㌴攵晢挶收㐵㉢〸晢〰㤰慦㔸㘸て㜲㤵挰㝡㔹ㄴ㉡ㅢ挲て〰㤴换㘴ち〵㍤㡢㜶づ挲摦晤昱㠳捥㕥㐳晤挸捡㌳搳㡢㉢㉦㘱搴㜲攸昹攲搸昸ㄵ搵昷捣攳愵㤳愵攳㤳㤳㡦㤵㈶㡦㡤捦搴敤戰敥㡢㌳慥愸㠷扥㘱ㅦㅢ㕦慡慦搸㔶昵ㄹ戱戹散㕤ㄵ敥ㄹ戱㌲㜹㜲挵㌸昵挴昱㔳愷㑦㥢㑦㍥昹挴㄰摥㥣㔹㤸㤹㕥昲㠵ㄹ㝣㌲㐳收㌸攱㔳戳愲㙡㜱㘵㐲昸㤶扢㕡㥡㤹挶扦挴散昱昴㜸愹扣㈶㐴挸㌷ぢ㕦戸㔵ㄱ攸攸㌸攸㑣〵㐱摤㔹攷搶改捥ㅣㄶ㕡㌵㠲㌰攷捣〸摢搶㥤㜸搴㠲戳㠸㥤戳㡤捤㈱愷㉣摣挰ち慤つ㉢摣捣㍢换ㄸ愸㌶散㕣づ挴㈵挳㕤ㄵ捦ㅡ㡥挸㌹攷敢㔶慤㕦愵㑣摦㘷攲㈱㤲ㄳ㤳慢㉦㑤〵捥捣㥡攱换ㄹ〵摣㤷ㄴ搸㌹扦摡ち㝢戴晢戸㥣扡㝣〳挷㝣戰㍢ㅣ㕡慥ㄸ㝥〳㜲愲㍢㘴戴昸搶ㄹ㍣摡ㅤ㍥戱㐷慤㝤ㅥ改摥㐷㙥㘵㉢戴㌶ㄸ㔱户摣㔱㉣㐶捦㌳ㅢ㘰㔶㘰㐶〴敡㐵㘶㠳捣㠶㤰㘹晤晦〶㡦㈴㍢戲㈹㕢㌱戲㤵㤵㙣愵㥡慤搴戲ㄵ㤱慤㤸搹捡㙡戶戲㤶慤㔸搹捡㑢搹捡㔵挰挴愹㌰㌰㤰㡤搲㥦愷摦㝢慦晥戹扦㥥㝢㜳改捤慦扦晥晢て晢㠶昶〱攸戹㘸㔲戳扥㜱つ愴搶㈴攲ㄳ愵㐹晥㙣捦ㄴ攰〹昳戴昹戸㜹晣㜸敤昴愴㜱搲挸㜱㔹㈹挸㙦㈱㤴晤㠰ㅤ㌲㥦户摣㥡㜷㑤攲敥敥㘹㈳㄰捤㡤㥢㠸摡愶扤扡㕢ぢ敥摡扡戱ㅣㅡ愱戸戳扤慤㌹㐸㐷户㌲搸㑡〴昲㝤㐷摡扢㕤㌱散扡㤸扡㙥愹收㝢摡㥡㥤㈵摦㕢改摥㍡攷㡢慦㌴㕡㍢㘶㌴〵㤱戶㈱挷敥㔸愵㙡㔲昳ㅡ㥦㔹昳〲攱捡改㑤㌸㑢㔶昵慡昰换㠲〲㔱搴攴㔲て戲㈹攲晡㠹㐵ㄷぢ〵户搶敥㑦搶㥡攷慥㠷㘰㘶㔱挳㝣搷㠵ㅦ㙥㉥ㅢ㉢戶㌸搴〲愲摥㠹㠶挳㉤搵㜳㕥戵ㅥ捣㜸㙥攸㝢㜶㙢换㔴㙤挳㠰愴愹㉤㜸㌵搱摦㥦㤱㐲〱攲戶慦㑦搳㌲㥦敤捥ぢㄲㄱ〹ㄴ㤳㤱敦㘸㈵扢搲㈵慣づ慢戰〵㘹㌲晢挰㌶㠳㜱扥㔲挶愴㜰㘰㘲㑤搴ㅥ㝣改挳摢っ摢挰摣愷ぢ㥣捤㡥㐶慢㍦户㈱摣昰㠲攱搶㙣攱愷敡㍥㡤㌳搲㐷㤰攵㙥㐰㈰㜴摤㍤㉡㍡敤扡戶㤹扢㘶搵挲戵晣㥡戰㔶搷㐲搴㐱㍦ㄶち摣摡㡥愴摦㠶㉡晤〰戳㔱㘴挵㘲㈶㍦㐶愰㝣ㄱ㈹㤳愳㜴㑡攱攵ㄶ㐱捥㝥㉤扣㍣㘴捥㔹㜶㈸㤴㔰ㅥ㌱㠱ㄱ愵搵㈴晡㠶㐹愲扥㔱㔵ち㘳捣㥣〱㤵ㅡ㤶ㅢ㙥㌶昹戶㠳㑢ㄴㄱ敤挹㠲㕤㈷ぢ㈸ち㕡攵㐱ち慦㠱㘸摡愴㐱㍡㜰㠲㠸挸〶㈹㥡ㅤ㈳户ㄲㄹ攱㔳㘴〴攰㤳㐴㐸攸挹敥㌲㠲挴摥㐹愴散搴㤵ㅦ昷愴搹㔶㤶扣㤲㘶〷戱㜱晡㈱㘶户㌳扢㠳搹㘱㘴摡㍦㈰攱㈸攵㔰㙥㑤晡㕤㜸搶敦㘶㜶て㌲挸㈷㥤㌲㈷ㄲ㔵戴愱㜶㘲㐷ㄲ㙥ㄸ㜶戲㌴㡡㤵㈸愲㘵摣戰㌳㠷ㅤ㠹攸挸敡摣ㅤ扡戶㕦敡搸㠷扡搳㘶㜲㌹愴挸ㄴ搰攴㕡户〱㑤㙥〴㐱㝢搴㕢昷愲慢㍥捥散㍥㘴㑡戱搰搸摤㤹㌵㑦㜳昲㤶㌰㠹㤴㈱搴愳㜲㡦㠸㤸收㝦㡡㠰敢㌸扡散搹捦㌴〵㈷捣㕢摥㝥㍥搶㥤户㈳愴户改捣㍤㥤㐳㑦搱㑤㕡搰昷㠳扤戴扦㜵搵㉦て愰㔹㝦㤰搹㐳挸摡昴ぢ㑦摥㌷敢㈵㤰㈶戱㤳挰摣〱㝡㕣愴㠵扢扣戹㉥愴昶ㄹ㌲㤷つ㝦㔵㠴昰㕥捣捦挲づ昶㝣㕦搸㌸搰搶㘴〵捦㉥户户㔶〶㜳扥攷戰㝥捦㍥づ㙥〹挵搰摦㥦敤换戴搹挷㈹㜶㘶挲摦㤴愰ㅣ敡摦㤳摤㠵㐴愲㔳㉢㜹戱㕦晡搹㜲㑦㤲昴㈰㐹ㅥ挶戶敡㡦㈰㠳㤴搰晥搲㔵愲㑣㄰散㤸〴㙢戵㔶改摤㑢㌹㤹戴昹て㍢攴挸愰㜲搶㑥挳㜷㄰っ㍢㘵换㘹〸㡢㐱㘷㐹昸㔵昸ㄵ㉣㕢ㄴ㤵㑢㤶愲㘶㑦㔶摣㈲戲愲慦慦攳㉣㥤攲㕢㤳㜴搲㈶㈵㔲戹㍤戵㌱攵ㅣ摥㈴㉡扡㈰㈹㔴㔲摣㐲つ〹㐴捡㈳散㥥㠸改㐱挴㤴戰㜱晡愳捣㈶㤹ㅤ㐷㤶晢㈳㈴捤㑥㌷㥥㠱戰㠱つ扡戳㉢㤵㑣㠱㘸㤰敥挱昷扢ち慢㔳㝣捤㘹㘶㡦㈱㙢㌳㝦攸㝣㑣㈱㐴㠹昲〴㈱搲㕡搲捤㉢㤶戸㐶ㅡ搸㘷㈲愸㌴㔳て㐲捦㘱㔴㘹搸㥣昵㥥昵挲㔹㉢㔸㐷ㄴ㙡搴㡣ち捦慦〹ㄷ搴攵挳昶㘹慢昳搶搷㐵㑤㌷换㕥ㅤ愲㙤㝥㜶㌷ㅣ捡戱㍥搸㤲昲㕣㥥搵㤰㝡㍢ㅢ㘳〸㑤㥥㠸攱㙢愵㈷㜶㐷㥥㙦ㅥ晡㐶㥡㍢扡㙣㠵戶ㄸ㌴ㄵ搳戱㕣㌰戱㡢㠸ㅡ搴〶捣攵㌵㕦㠸搹㘱昳扣㙦搵㙣换ㄵ㐴〶㙣㑣〶敡㉥㡡㔵㐴〸㤶㍣挶晦㍣㜷搸㕣昶つ㌷㔸㌷ㄸ㑣摣㍣搰昲㈴㐳㈲㌹㜳摡㜲〳扣㐶㘲㤱攵ㄱ戳扣收㕤㐳慣戶敥戸攷㡤昵㘰㔷㘰㠵㐴慦㤲㐴㡤㤶搵戲㔹慤㤰㉤昴㡡ㅦㅥ挸㌳㤹ㄳ昸敤㘷㈶㜱㤵挹搱㕦㥥愲扤㘹搷㐷昱ㄹ摡改㥣搳㄰㈲㐷㡤捡扥㔴㈹㑣㑥搵㥦㘰㥦㈷㤱捤㥦扦㍣摦㡣捡㝤㥣㘸㜵㡥づ晥ㄴㄱ㉦愹愲ㄱ〳愱㝢㙥㥦愲ㄴ搶㤱㜰挰㠰㐰㌸㥦摡愹慦㘸㑡ㄸㄲ摦扥㘶㜱づ㐱愴㈱昳愲戱㈲㙣㠴愲ㅤ㈳摣愷ㅥ㘸挵㍡㠶ㅤ㐴㙤㌳㥥攳ㄸ愴㉣㔲㘵戹㙡㤰㠰愷敡愱户㘰戹扡㠹㑣㤲㕦㔴㘵㕣㐷㤵㜱㕤㔶つ㤹㤷ㄸㄵ㤴㘵㡥攵慤ㅡ扥ㄵ慥㌹㔶戵挰〷㐶敥㜶〵㐹㠲挷㈹㜸攳ㄴ㡢㡣昱㌶㘳晥㌲㉣戶愰〴㙣㤷㈰㐶戹㜵挴㍥〸㌷慢攵昱愳昵攸㔷㠲㝣㤱㑥㔲晤㈹㡣㤶㤳搷㈲㈰㜱㘴扡ㄱ㕦扥戸昱㉡㙡㤴㕢㡥㔸㑦㈱ㄱ㌸〴ㄳ㌲㥥摥敤扣㜹搹戵㐲㘰㡦ㄸ㥢戳挲搹〰㈸㐷㠶愲㍣摤摥㈹戱㥡攸㌴搱㔰ち昷㜶㌶戵㘸㠹㈳㥤敤㐹戵昱挰ㄶ捤㑡愱㈴昴挸㜶㐰㔲戱㙣㌱挷摤愴㘹㌴愹户㘳㘵愳愵㜹㑤㥢晢㑥㈱昲㌱昴㤲愴㤹㡣㝥㐶ㄲち㘲扣愴づ愸㈸扡敢搳挹㈳ㄱ慣愱〹㔰愴㥡㔲㜵挳㔱㌴㜰ㅥ㌷㑥㙡愲ㄸ㍤㠱扦昷㐵挵挵㝡搸搲㘲㕣ㅦ㡤㕡愶㙣㝢搱㠵㤱㔰㌵晣摡㉥㘱㘹慣㑤㈹ㄸ挹㥤扤㉡㝦戵扤〹㐶㡣搸㤰ㄱ㤱ㄴ㌷㌰搸㄰捣㤵〸愶搲㌸ㅢ收㔶㌷慡ぢ㝣㕡㄰㠶㉢㌱㔰づ㙢戳㘲㐳㕡㘱㑤㐳㝥㔴㜶㘸ㅣㄶ愵ㅣ搵捤愹㤵〰ㅡ㍤愴ㅣ㡦㑡㤲挱㜵昳ㄲ扤㔲戸扦〰戱ㅢ㤵㤶慡㈱愲扡㡤〱㜸㌰搸㍤搸挱㡥愸愸〹㡤㌳㑡搰㝣ち攱戶㉥㠲扣搳㈳㐶㈱㐸㑤㤹㍥㍣慢扤昵㝤愶㥦㥤捤挴㠵㠸㠹ㄸ改㑡㌱ㅥ㠰摣㘴㔰㤲㕣㌴ㅡ挷捡㤵㘴㤳㐲㙢㈸慥愳㠵㌱㑣㡢捦て㜱㠱㠷㘱慣ㄱ戲㡤㡤ぢ㙥愱〵㙤㙡㙦敥㌳攷摤慡㕤慦〹愹㡡㘳㔹㉤㌵昲慥挰㤷扣晢愷戸㈹㘵㕦愲㑤㤹挷㐹㡡㑢㈶㤲㝡㌷扢昵捦愳扢ㄴ㜲ㄸ㐳挹㌶挶ㅥ㔳扣㜲㌲ㄶ搶㜱㐵㠱收攱㠱收摤〵㜹㙦づ㈲慤愳㡡戲散㈲慥攲㌵〲挸㤲摢ㄲ㘰ㄷ扤㡢ㅥ㑤昶㐴搵〵㑢㔵敤ちㅣ㘱㥤㑡攰攵昳㌰㐶㝡攴づづ㤲戹ㄱ〵㜶㙦扣㉡ㅦ㌳㌷捥㐶挶㠷挶昰㉥て㐱ㄹ散㉡ㄸ㠹昶㜶戶㘹㜴㙢っ晣搲昰搶㥦㐶愶㌱〲㑣㠳ㄶ㤰捡挰㤹㐶㜹㝢〳㠷戱挸㤴攰㘸㌲㡥捡㄰攵㈸晣昵㐰ㅡ戸㠹攷攸㘵て㑡㈸ㅣ㤳㜷挲攲㙢㠹ㄳづ㑥㐰㥥㝦愸慤㜲挹〸㜱昳挵㍤摣㔶㍤㔵慢搱摣㠵㝢㙥㔷㘰ㄵ户㌶㤴㌹㍡搶㜶ㅦ㑢慥㠹昶摤搱戶㠶攸㥥攰㠹搹搲〵㈳慣慥㤵挳㑤㜵㘷慢㔷㤲挸晤づ敥㠸㉤摦㑥㥢戹摦攵ㅤ搴つ敥㝤昱慡敢㕤㜳攵扣㜲〱㉦晣搱㡡搵〷〶㌸挹㘲收㈳晣挸㤴捤攴㝥㡢ㄱ㜷㌲㙤づ搰昴㡦㜰ㅣ㤹㤴㌴ㄸ㐷㌹㠵㑥㘰扢㌷㉥っ㤰㑥挶摡攸㐴ち㠲㍤㐲㜱㔷㍦㌱㐲搱㝥〳戴㤲㔸搴㠹ㅣ㝢晥㌶㔸㕦晢㌵㙡㠸㜰㍣㐷㘲㈴㜷ㅦ㑡㈹愸㤳㠲㍣扡摤挱扢㈰晦㍦㔸㡡戹㜹㑢㜶晡㉦㌰戳昶㙥㍢㡡㡥㄰㐵扦敡㐴ㄱ攳戰㌷ㄵ昱收散昷㡥㥡㥦晡慤摥晦攱㔱昳ぢ挰㌰㤳戴挶㄰㔳㘳㉣扥㘱っ㘴㍢㡣㠱〷搱㉣㡤㠱㘷搸㠷攱㝡㘵っ㐴摥㡥〵㔴㙣㙦っ㌰㠸㤷㘲昲㈵㘲慡〹〷〶捦㕡㠷ㅣ㝡挲㉥攰㜶慤〸㄰戸㠷㝡ち㘶攰㝢扡扤戳㝡挹昰つ攷戰慣㍦敦ぢ愸㉤㝦ㄹ搷戵㘵ㄷ昶戸㜳换ㄶ搹㘹ぢ慦㐴散㑥摦昳㥣散散㤲㍡㌰愵㤲昲搳㙢〵㉤晦㌱㝣㈲ㅡ㑦〸㤹㔷挶㝥㝥晥敦㉦扦㜱㤶搷搲㈲㕡捤㌱づ摣㑢㙣㥥㤶〳愲户㠹ㅢ㈱〷昹昵捤〲㍥㐳戲搶㙤㌱㙤昸搲摥〹㜴㈷㉥㉡挲㑢㄰愶㈲扥摤㘰㑣攲㠲㠳㌲㈶㑢㙤㡥㑤昹昵㤲㜴〶㤶ㄲㄳ㤷摥扢㌸㍥愸㜵㔵㔹㍤摡㤵戹㕦㐰改摣攴㐴㕡敤㐱㥥㉦㤹㌴敤㥤㜶慤㜶㥡㕡㑤㥡㠹摡〴㈰㘲㈹㠵㐰〳㈹㈴㜹㘴㘱攴㕦㑡愹㈵ㄴ㜲㈵㘴㈹㈱戴昶㔸㉥㑦晥㝢㐲㐰㌴㙥昷昵昸愵ち㜶ㄱ㔸㡣扤敥扤㥥㕤㘹㜵挶慡㠹㌱㔹㜹晡㜸づ〵㜹㑣㘱〵㠳戴戲昶ㄲち㜱捡ㅤ㐷㘹挷㡥㈷扥㘴搸㔱ㄱ㌶挵搸㌹㠷㕥戵愲㜳捥慤攳㡡〷昴㑣㕥㉡っ昷〰慢㜱昴㤴挱㌸〵㕡㔴㔵捣㐷㔴戱搱㘹㌰㙡㠲捥㜲て攳晣㠹㈸ㅦ㍦〷㘲晢㐴㜳攸㠳敤㉤搴㜱敥〰ㄶ挸㕦搸㕦㐷㔲ㄸㅢ㙦㈵挷㐰挲敥〸慡愰敥㠰㤷搱㐵摡昳㥡摥㉣昲㕤㥡挶㘰㜴捣㔹㝤㥤晡㥦㘱㙡挹㔹换㠴㘶扣扡㐵晦㕦㐱挵戶晡㕦㘳㤰㑤愲散昹愸挰㠷ㅣ㈳㈵摢〶㘷戸㈳昰㘱㈳㑣㈳㡦挰扡㉣㌲戶慤㑡㘵㝣㥦慡㥡愵〴㠷㠷慢扦晤づ㐴愳㉦㙤摢挱慥〲㤰㔱愰摣㑦㈱㠲扡昶攷愴㍢捦戱昹㉦愲㝡㙣挱慡晡㕥攰㤹攱㜸ㄹ搱摤㜱㝥㘰㘶挲收㤹搲摥㙥ㄷ㙡㐷戱ㄳ㐳㉦愰捦挲㈲〴昶戳㈲晣㠴㠲㡥っ㈱散㉣㘴挱㙦㡤昶㈷攲㐸㔴づ挱㙤收㜳㜵挳挶攷愹㡢㜰㙡㠶慣摡ㄵ扡㑥戹㤶摢㙦㘲㜰攷㜰ㄷ敢ㄹ㌸㝥㠴㕤㐲ㄴ㑣㉥攱㠵ㄷ戹慤敤㝢搰ちㅢ慤㉤㈰㘴㙦捥戵㘲敥㈷㐰改捥摥搲㑡㌱㝣㈷扦㍡㔶㡥て㍡㐶㜷敥㠵攵㐸愳㈰昱攸㜳㙤㝡扢㈶㙣昸挸㜶㄰攱㝥ㄱ㕤戵愷㤹攱㔷晦㔲㔴攰㠳㐶㔷摥㔳㉣晣ㄸ㑢㈲敤愳㥣挹㝦ㄹ㔹㜷㠲晥ㄱ挰㕡摣〳㈴㘸㡤愷ち㔲㘰㔱晢㈱摡戹㐳㡤㤵㙡昲攴㠰㌶扤㡡㉣㑥ㅡ㑦づ昲摤㍦〰㜰攳摤〲戵摤摦晤搶㤶敦愶捥㤷㙢㑢㡥扦㍦搶ㄹ晡ㅡ㥡㜵㡢搹㑢捣慥㈲摢ㅦ慢㡥ㄱ㑡㐳㡡㤸扣㡡ㅤ扣㝢ㄶ㘵愴㍦㐵㝦㍦㌸晢晥ㅦ㤸晥㜵㔶㤳昲て㑤慤慢愰晣㤳慢昸㕥㜲ㄵ㉥㙡扢慦攲扢㕢慤㘲㍦㐵㈳㘷愲慦㈳ㅢ敥搳㈴摡昸摣戲㉡愲㑦㐲昹ㄲ㙡㝦摣㤸攳㉡㔳扥捡㤱㌶て㙦㌱搲ㄳ㤳㔷慥搴扣搲㜴〵㈷昲愱敥ち㠶㡦扣摦㕤挵㜴扥挷昸扣昶㥤㜸搷㉦㕣㠸㍦㜹捡㐶ㄱ㈳㘰㕤㔹㤹愴ㄲ㙥愴昶敤ㄸ昸㥤㕦㌶ㅤ㥥㘸㐰〲㘹㈸㘰㔲㤳〴晥㔶っ㝣〲㥦㔳㐹㤸っ攳晦㑣ㅦ挴挰愴㍡〹晣捤ㄸ昸㥦㈷づ㌷㠰㘳㈲㡢㐴〳㈹㈰挵㝥㤵ㄶ㝤攲搳㙡ㅥ㤴㜳㈶㜵攲愰愹慡㈹づ㘵攰搷㤶㕡㜱〸㔷㌹㝣㝣摣㝣ㄱㄷ㤳㜰㠱〳㤲㔳晤ㅦ〷昳戸戰㌴㙢㠴〶扥㕤摥㐰愸搸搷攵ㄳ㍢攷捤㐵ㅦㄵ〳收㝣㠰㜳㔲㙤㔷㤱〸㔴㝣扦摡摦㙤㕣敡㈹收㘰㜳㍦攲㄰㔷㤶㌷㐰㝡搳〸㌲㉣搲慦㝤㈳挶㙣收戵㈶捤攸㥢㐰づ扣㉣挸㔹㈸慡㄰捡ㄸㅦ㌴戲㌰㔱㥤㝦〵搹㐸晣㥦㐸㡣㙦㐸㌷㐷㔶㝢㈳ㅥ㉦㐹㈹晡㔷搹攱㙢挸晡攰㕦搵㈲㍡㙢ㄹ㌷挷㔷敥㜸敤㥣㔹㡦㡡攵㌵㜴搵㌸ㅦ扥㔰㝦㥤㑦慦㌱攳㔳㉣㤷㔰捥㘸戲愹扤㜶昰㍦㌷敥捦攴 | F27: 㜸〱捤㕣〷㜴ㅣ搵戹摥扢搲慥㌴慢戶㘰㝡㔵戰〹挵㔸㤶ㅢ㈵㠴㠰戴㐲戶戰㘴搹㤶ぢ㤸㠰㔸敤捥㕡㡢户㤸摤㤵㉣㜱〸愶㐳攸㌵ㄴ㍦㡡㠱㐷〷搳〹攵ㄱづ〹㈵搴㐷换㜹㤰昳㐲㑢攰㔰ㅥて挸㜹〱㤲〳扣敦晢㘷㘶㌵扢㌳戳㔲ㅣ㝣㡥〷昳敦扤昷晦晦㕢扥敦捥㥤㕢㘶攴㔳㍥㥦敦㝢㕣晣攵㔵捤挰㑥㝤愳昹㠲㥥㙥㠹㘴㔳㈹㍤㔶㐸㘶㌳昹㤶戶㕣㉥㍡摡㥤捣ㄷ慡㘰㄰散㑦㐲㥦て昴攷㤳挷敢戵晤挳㝡㉥て愳㠰捦㔷㕢慢昹愱て㤹晦㠷慤㠸㐶㉦慤㥡〲㔶㍥㉤㐸㔱㐳㔱㑢愱㔱搰㐹慢愳愸㠷愸㙦㠰攸㡢戴昷づㅣ㡢㉡昴ㄵ戲㌹㝤㥦收㘵㐶㐱〷敤搷㌲慢㘵㐶㙢敢扥㉤慤晢㌴㐷㠶㔲㠵愱㥣㝥㔰㐶ㅦ㉡攴愲愹㝤㥡ㄷづつ愴㤲戱昹晡攸㤲散㉡㍤㜳㤰㍥搰㍡㙢㈰㍡㝢晦ㄹ戳攷捣㐹ㅣ㜰挰晥昵㡤挸戸㈷搲扥㌰愷㈷昲㍦㔰㤶㑤捣戲㌷搲摥戲㐰㉦晣㐰㔹㠶㤱攵㠲㐸㝢㐷㌶ㅤ㑤㘶㝥㤸㍣〳㈴㘱㔶㠷ㅥ㑢㤲㉤㕤捦㈵㌳㉢㕢㔰改ㄲ㤰ㄱ摢慦愵ㄳ㘸挷愲昹㐲㐴㑦愵ㄶ敢〹ㄲ㔵㥦㈶㘰㝡㑥捦挴昴㝣㘳晡搰㤱㤸㥥㌲搵昹摡昴戲㘸㙥㐱㌴慤㔷㌳搰㤴㌶㌸敢㡡敢㤹㐲戲㌰摡㤰㕥㥡搷ㄷ㐷㌳㉢㜵㥡〴搲㜳㠷㤲昱敡㙡㔵㕤敤慢摡挳慤㌲㐲㑣㑢㘷㉥ㄶㄹ㡣收ちㄲ㈳㘵㌳摣㙣㙤扤㐳㉡㕥㔲㉤昶愰收㌲㉦㤲搴㤷㑣捦搷㜳ㄹ㍤挵㐲㐸摤搴㌲㈳挱挴㐰扥〸㡥搵ㅡ昲愲敡捣ㅢ㠴㑤㘱㈹摡ㄶㄴ㕢㐲〴㈷㐱晣㜸戱㕥㠸㈶㔳捤ぢ㜳挹㤸摥扣㘶㝡戶㜹㐹㜴愴㜹㕡㜳㑡ㅦ搶㔳捤慤〸㐵戲改㠱慣戶ㄵ扤戶㠶㔰搵ㅦ攳ㅥ戴攷捡晢挰摦ㅦ昵昷て昸晢㘳晥晥戸扦㕦昷昷㈷晣晤㉢晤晤㠳晥晥愴扦晦㔸㝦晦㉡搸㔸㔷㙤㑤㡤摦扣慡晦晥挶㘳㝢㕦戹㝤晢㝤捦㕦㌸晤愰〷ㅡ晦愶㜸摢挹晤户㉤〲摡㜶㄰挱敤㈱㉡搷㜲㜶戱㤶㍢搰㙢㐷〸愵晥㡣㕡戲愶昳扥慣㌹㈵㌲晡㕣昷㔹㡢づ戹晥㡤㝢ㅦ㔸慢㜸㔳㑢ㄱ㍢搳㜸ㄷ㠸攰慥㄰㔳挶〵愲㘷㜹慦搶㑣㥦ㅦ㐱㈸昵㈷戳㠰㈷㍥晣收搵捥㉢㠷て㜹昸慢ㄳ扥昸愸㙥搱づ㡡〳㠶ㄴ㌰㤹挶㔳㈰㠲扢㐳㔴㉥㘰〶摡挰〲㝥㑣㥦㍤㈰㤴晡㉦戳㠰挷捦昹昵㙢愷戶㌶㐶敥敥昷攷㜷摦晦戹挳ㄴ晢戸ㄴ戰ㄷ㡤昷㠶〸㑥㠵愸㕣挰㉣戳㠰㝤攸㌳つ㐲愹㔷捤〲扥㕤昱扦㐳敦晦㘶昴㤰㠷㕥㜹昲攸搸搳敡〴挵㠱㑥ち㤸㑥攳㔶㠸攰っ㠸捡㉣捣㉣戲㌰㤳㕥戳㈰㤴㝡挱㉣愲戶戳昷攰攷㍥ぢ戵㕦戴敢昳敦㙢㘷昵捣㔲ㅣ㐶愵㠸㌹㌴摥ㄷ㈲戸ㅦ㐴攵㌶戰〸㠲戴㍦㝤づ㠰㔰敡㘹戳㠰攵㌷晦攲敤摤捦攸改扤昴挵挲㠲㉢慦㝢㉡慢㌸㐴㑢〱〷搲昸愷㄰挱㠳㈰㉡户㠱㈰ㄹ晤晤㘷昴㍡ㄸ㐲愹㈷捣㈲晥昶敡ㅥ㤷㑦摥敥㥢敥挷挳慢㘳㔳摥㝢敡ㅢ挵㡥㉦㐵戴搱戸ㅤ㈲ㄸ㠱愸摣〶㜶㔶戶愱㠳㍥㠷㐲㈸昵㠸㔹㐰攰㠳挱㈹㡢挲㔷捦晦昷㌷㐶㑥扥戹昰挱㔷㡡てㄷ㈹㘰㉥㡤攷㐱〴扢㈰㉡户㠱㍤挹㘸挳㘱昴㥡て愱搴晤㘶ㄱ㝦晡昴晣㤵换搶ㅤ摡㜹摦ㅢ㥦ㅤ昸收〵搱㐴㝤て搴㡢捣㈱愲㈳ㄷ㕤㠳㜱㜶㙣〴㥦搹搲捡晦挶㝦㜰攱戹㤵㤸㤳搸㉦㌱㘳㐶㝣㑥㙢㜴㔶㌴挰㐱㘶愲㈳㈶㠷㤶晡挴昲㘴㈶㥥㕤㈳㐳㘸㝤愲㌳㤹㉡攸㌹㠹㌴㈵昰㘳㍣〶㈴摥㤰㌸㜴〴て捦㤸㌱摡㙥㤵㠸攸㌹っ㘰㤹挲攸搸㄰扣㔳㝢㌴慦㡦㐵愷㥡㜹户㘷㠷㌲昱晣㡥敥捡扥㐲戴愰敦㔰慥ㅢ换挴攱搶㠷㘷㤲㥥㤷㉡敤㔲敥戶㉣㥡ㅡ搲摢㐶㤲㠶㝡攷㌲㌵㥥㑥搹〱㙦㙤㘷㑥㍦慥愸㜵搴愸つ㜳㥣㘱挹摢搱㑡㐳㘵搴慢㌹㌲㤸捤敢ㄹ愹摥搴昴挲㘴㙣㤵㥥敢搳㌹㐳搲攳搲搴慤愹搲㡤㐷攴搴摥っㅡ㡡㠷㕥㝣㌷㝢㉡㠱搶㌳㜱㍤㡥晡慥〶捡愳㑢愲〳㈹㝤㥢ㄲㄳ愳㑣㈸戶㉦㐹敥捣挶㠶昲㤱㙣愶㤰换愶㑡㌵㙤昱攱㈸ㅥ换昱㥥㙣㕣慦㤶换㘷㐸攵慢慡㔲捡户愷摢昳㡤㜹攷昹〴戴㜵ㄲ㍥㘷㉢ㅢ摢㍡ㄱ㡤㕤㥦㥣挵㥣ㄱ戰㜵㌲摡敦㔵戱㈶昶㑥㐸敢搶㡡搶㉥㥤㤴㑥摢㤵摥㜸㉤㡢挱て㜸㐸改扣㉢晤㔳扣戳ㅣ敢㤷攳搴搴挶ち㈷挴戴慥〰㥡㘴㕢散㝢㥢搶搸敦㥦㘴戶晥搰㘱㑣扥收㐵㌳昱㤴㥥慢㌸㥤㔷慣㤱戶㠰愲㤷㘲㈱挵㈲㡡挵㄰㠱㍢㌱挶㜹㈲捡㠹㠵ㅡ㔱愳㠱㌵挹㜸㘱㌰㌸愸㈷㔷づㄶ㤰㠶㘵㐰㙤㉤攱㜶㕣摡ㄲ㈴㘹㑢㈹㤶㐱㠴㐲扥攰㜲ㅡ〵㐳戸㝣〱捥愰晥昹㜹ㅥㄷㄹ㥡㑣㉢㌱改捦〷搲㤸扤收慢慡摣㕡㍤㉦㥡ㅦ㉣昰㠶慢愸㙣㘰㝥㠷㔳ㅣ〱㔱扦〲愲㘷㥥㥥挲敤晡〳慤ㄷ〲ㅣ㥤挷㥤㤹ㄲ㡣㙤搲㝤愳㤹搸㘰㉥㥢挱㐲慢㈳㕡㠸戶挵㌰晤捥慢㘸㌰摤㥤㡤っㄵ㠲改㜹㐹晣搴愷ㄷ敢慢昵㘸㈱㠲搱戸搰㤰敥挶搴㕤㠶换慥昸㐸㈰㙤捣扡㍢昴㝣㑣攳昴扣ぢ愳捦㐸㄰㈱っ愷昵㘹㡥㈷晡㐸㠱㔹搷愴ㄷ㐶㌱㜶ㄵ㌴ㄸ㑤ㄵ㉦㈳㐴捦〶㐹戳扣㐳㘶っ㌹㠴㈵㘸换愵㑥ㄲ㡣㥣㝣散㈰㜸㔰攲㠱㕢㙤捡昲ㅢ㘵㘹㈱㤹捡户㤸攸戶㜴㘴戱㜶搳㘵愹㐹搴㠳㐱昴愳㘰㐵慥捡敦㘷捥敦㝢㘳〳㐶戶愸捡摣㕣㜶㘸㌵攷昸㍦㔴㍥捣换愷ㅤ〹㜱敤ㄷ户ㅤ戸晢搵ㅢ扥㌷㝦搷攲㑥㤱㉢昸㜳㈸㉢㑦㈷挶㤶〰散晤昴挲㡦㕣摡搱昸〹㘹捣㐲㜳搷〵戸㘰㜰ㅤ㜷㍤㔶㉣㥣㥢搷愷〱捡㤲㥣㉥㑢戰㕡㠹㡣慥搶ㅢ搲换戳戹㔵〳搹散㉡昶㤱㐶㠹攵〷㜵扤挰㜵㑤㥤戹㡣㘳㔸㈹㔵㔵㔵戲㍣戱㉤㠰戸㈲ちづ㐰㌴戴愵㔲捤㔶㡥昹㘰っ㐹㔵㜸扥〴攳〸㙣㡢改㔹㝦㜷㈴搲㍦戳㜵㐶敢戴搶搹搳㘶捣㙣ㄹ㐹攵搳㙡ㅤㅡ捦㈵挵㥦扦㝣晡挶搱㔵敢㈳㘷㑤晥㜲捡〱㤷愹晤搵㔵愶挲戱㥣搹ㄶ搹挹㝡㙢㈵〲摡㈰㐵㤲攲㔸ち慥㠹搴愵㜰攵挰㠵㜰改愵愵ㄱ搷㌲ㄴ㔹〸っ㌹〲戲㌱晡㈸慥㡣㜸搳㘹挷㔱攴㈰ㄴ搷㍥扣㔹㝤㕡ㅥ挲㤳㜱づ㝡㤵ㄹㅦ㕢㑥㌹㔸ㅤ㠶㜳㐸㘳ㄶ㑥挶㐵愷戸昸㈲敢ㅡ㔱搶㠸慢㐶㑣搵愹㈶㐴づ散㑥㌱ㄵ㡥㜵ㅡ㤷㘷㠲摤㕡㘶㜲ㄲ挵挹ㄴ愷㔰㥣ち愱㑥昰挴敥㜴摡㥣㐱㜱㈶㐴ㄹ㜶㕣昲〹㜶扦愴挱搹㄰慡ㄹ挲挰敥ㅣ㠴㍣戱㍢ㄷ捡捡戳㝢摥㉤㥣摤㍢㤰㍢ㅦ慥㈱㡤ㄹ㜸攸ㄴ㔷㤵㙥挸慤昲㐲敥㔸㔳攱㔸㠰㑥㐶㑥㠲摣攵㉣敥ち㡡㉢㈹慥愲㔸〷愱攲㥥挸㕤㑤㥢㙢㈸慥㠵㈸㐳㙥ち㤲〴戹昵㌴戸ㅥ㐲㜱扤㙡㈰㜷〳㐲㥥挸摤〸㘵㘵攴慣〵戰〳戹㥢攰ㅡ搲㤸㠱ㄳ㌹搱愹㍤愰㜳㐳慥捦ぢ戹挵愶挲戱戲摥ぢ㌹〹㜲ㅢ㔸摣摤ㄴ昷㔰摣㑢㜱ㅦ㠴敡昶㐴敥〱摡㍣㐸昱㄰㐴ㄹ㜲㝢㈳㐹㤰㝢㤸〶㡦㐰㈸㉥挴つ攴ㅥ㐵挸ㄳ戹挷愰慣㡣㥣戵戲㜷㈰昷㌸㕣㐳ㅡ㌳㜰㈲㈷㍡㌵つ㍡㌷攴づ昴㐲敥㈷愶挲戱㘵㌰ㅤ㌹〹㜲捦戰戸㘷㈹㝥㑦昱ㅣ挵昳㄰㙡戶㈷㜲㉦搲收㈵㡡㤷㈱捡㤰攳敥㠳㈰昷ちつ㕥㠵㔰㌳㈱っ攴㕥㐳挸ㄳ戹搷愱慣㍣搲㡤㙤㔹㌸戰晢〳㥣㐳ㅡ戳㜰㘲㈷㍡挵つづ㌷散㈶㝢㘱户㥢愹㜰散㠵捣㐱㑥㠲摤摢㉣敥ㅤ㡡㜷㈹摥愳㜸ㅦ㐲敤攴㠹摤㕦㘸昳〱挵㠷㄰㘵搸敤㡢㈴挱敥㈳ㅡ㝣っ愱戸㜵㘲㘰昷〹㐲㥥搸㝤ち㘵攵㕥㘷敤挵㌸㤰晢っ慥㈱㡤ㄹ㌸㤱ㄳ㥤攲捥㡤ㅢ㜲㜵㕥挸㠵㑣㠵㘳㤳攷㐰攴㈴挸㝤挵攲扥愶昸㠶攲敦ㄴ晦㠰㔰搵㥥挸㝤㑢㥢敦㈸昸昰㉤㐳敥愷㐸ㄲ攴㌸ㄷ搴晣㄰敡㘷㐸㌲㤰慢㐲搴ㄳ㌹㥥㑡㔴敥㜵㘳㥢㑣づ散㠲㜰づ㘹捣挲㠹㥤攸搴挱愸㠵ㅢ㜶㝦晤捥㘳㙥昲愵愹㜰散㕥戵㈱㈷挱慥㠹挵㠵㈹戶愰搸㤲㘲ㄲ㠴晡ㄴ慥敥㜳㤳慤㘹戳つ挵戶㄰㘵搸戵㕢搸㙤㑦㠳ㅤ㈰㔴㐷ㄱ扢ㅤㄱ昵挴㙥㈷㈸㉢昷㍡㙢昷捣㠱摣㉥㜰つ㘹捣挰㠹㥣攸ㄴ昷摡摣㤰晢愳ㄷ㜲㙦㤹ち挷戶摣㕣ぢ戹㍤㔸摣㥥ㄴ㝢㔱散㑤㌱ㄵ㐲扤敥㠹摣㌴摡戴㔰㑣㠷㈸㐳㡥㍢㝣搲敢㘶搰㘰㈶㠴㍡慣㠸摣㉣㐴㍤㤱㥢つ㘵攵㕥㌷戶㉤攸挰㙥㕦㌸㠷㌴㘶攱挴㑥㜴㙡扥〷㜶扦昵挲敥㐹㔳㔱扥摦ㄸ㔸㠰㥣捡ㄷ㔶㜲㠶㔱摣㠹㈹摢攳〹㈶㤶㘶㤲㠵㝣㕤愲㙤愸㤰敤㑣ㄶ㍡昲㠵晡〴〴㠲攲戲㠳㙣㕡搸㥣愶㈶㤶㈵昵㌵㑢戰㘶搸搵愹挲昱㑥㘴㈸㕦挸捡㥡㜱ㄷ愷扥㈳扢㈰㕢攸㐸收㔷愷愲愳㔳㕣搴㠶㘶昹愰㥥挱㉥㕡づ㥢㘹攳ㄹ㘵㔷慦搶攳㉥㜵散换づ攵㘲㝡㔷挷收戰て愷㡣挵慦てぢ㈷っ㜷㙡㜷敦㝤㈷ㅢ敥㡤㈰搲㡦挵㤶摡戸㙤㥣攰挱攸㙥㙡㡡㑦㍢〴扦㕣㜷㉢㙥慢㘰㕦愵㜷摣づ㘲摢搷慢㠳㜱㈸〱㔲㡤戴〶㜳攳戸㉢㤳㑦挶昵㤰ㄹ敢㐹㘶ㅡ捤㘰敦㔰愱㐴ㄳㅤ㤹㘴㙡戰ㅥ散捤㠰昸㔸㌴ㄷ摦ㅣ㌸㐱挳㜰ㄹ㠴愸㈰晥摢㌸㤸㡤㙣㝣扥捦慤㔳昳捦搷㘲搰㈱捥摣㍣㜳㕤㥡ㄷ㙦㐴〴㙣㕢愲㑤戰㙦㈰搴挵攴㕡挶㝡昴㘸㐶ㄸ攸㉢挴㍢昴攱㐶戱搰搱戵㜱㥥㥡搲㈷㤵㐶㘵㈳㐷㑢戴つ攴戳愹愱㠲摥㔸っ挹㉤慥㈵ㄶ敢愹㈸户户敢㡢愱㠵戱〲づ〰㡡昹㜱敢㝡昳㘱〷㠸㔴㥢っ㈹攱㈸㔸㘱㘴㉢㙤〴敦㥥㡤㘴ㄴ昷㑢㐲慥捦づ㔶㔷㕤挹敢搶㠳㝤㔶㠰摣㠲摣㐵挸㝥攲晢搷扣㡢㈶㔹挷㉡挶搸㈶挳㔶扤㤵挶慤攳㠶㠴㡣㜸㌸ㅦ攲㔱㝡ㄳ㙦㥢ㄴ摥㜱㈸㈴㘳搱㔴㙡戴㌱搱㤵㠹愵㠶攲㝡㜷㜴㐰㑦㔹愳㜵㌶㤷摥㑣昸㤲㜷㐵っ慥㉡攰㘲㙥敡㜷攱㠵ㄱ㙢户㝣愳〷㌸㥦搶㘶㍤㔰㤱㠷㐱换㘲〰晤㑦ㅦㄴ㠴攰戴攵搸㌱㤷扣㥤㠰㈱捤㤱挴戱㡣扢愹挵戳〶戹摢㙣㘶摤搹敥㉣捥㠱攲戶愴㜹㐹㈳㘹戳戹愷㠴愲㘰㌰戸戱㡦ㄵ㘰㠵敢㜳捥攸昹扢搶晣挵慣搹㘰㘰〹ㄲ捡昷㘱㙤搳て㜹攲换〰挸㥤挲㈶㡥㕥挶㜴㘱㐹戲㤰搲敢ㄲ愲㤷㜰㉤㙦〷愲㔹㤳㔸㌲㠸捤捡㡥㠶挴摣㕣㌲㥥㑡㘶㜴㑥㍤㜰㉥挹㌷㐲扡昵㤵㌸㐱㕢㤸捤㈷昹㘶㔲㐳㘲㐹㉥㥡挹慦收搶㜵㙣㜴换㤲㤸㤰ㄵ㐸戴㈷㌳戸㜹㡣㌲ㄹ㙥㑡昴つ㘶搷攰攵愶愱㜴㘶㙥㜴㜵㝥戳㈰㡡㑦㙣攳㌲敥㈸扦昲晢㔵慤扦㜶㘳㥦㔱攸攱挸㜲㈶戲昴㔳㤸㔴㉤㐵愸挲扤㑡㤶㜴攳晣㤲昷㉡敢㔴昲摥㡦敢愱㑡昱捤㌰㡥扦㕡〴㑥昵ㅤ㄰㕤㜳㤷㜶㡤㥤㝡晦㉢㙦㙣〵㤶㈱攳ち㑦〱改ㄵ挵ㄳ㌶㉥㐷ㅡ㡤㥥挲㌴㜶ㅣ㑤〸㘷慣扣昷㠵ㄲ㘲挳㡥㠸〷㈷捤ㄹ散挴愱㐸㍤敥㝢㡣扡㌸㑢挲㜰摢㘸㐴㌸㠷㑢㐷㔳㜹㔳㠷ㄷ〲搲㔱昶㉣昶捡㍥っ搹㝡慤㑣愸㌱㤰㘸〹〸改㝥㘶㔲㜴〴㐹搱ㄱ㐹挲㤳㤸愷收ㄲ㘶㕥搹㤵搱㕣戲㌰㤸㑥挶㙡ㄹ攱挹昶㘶搱㈵搱㠳慡〱愶㜵㐹扦挴散戴晣攰捡㌸㙢〱摢㉤㔸㌰㄰㍡戲㡦㡥敢㤷挷户摡挸㈳㐹㑣㕦㌵㑥㘷戵㑥㠸㠰ㅦ㤵挰㠸㙦㔴挵㌶敦㐲㡡㡣㐱搵㠷㐳㔵昱愰愸〶〶愱敥㙣㌴摥㠹搷ㅣ戲戹ㅡ昳㔵挲㕡㤰挸戱㈳ㄷ收搹㘰〴〷攸㌸㤸ㅦ挶㐴㌷㔷换㠴㍥ㅣ扢㔵昳㔴㌱㘸戰挵搹愳㉦㄰愸慢㜵㉢慢换捡㙢㡡㜹㍡㘲㝦㝦戲换㤱晦愷㡢昶攷挶〳ㅡ挰戹㠲㌶㤷㡤㥤〷愱㡥㐰㤴敤㈹㌳攸愲挱㘱㄰㠱㈳愱㉣扦ㅦ㍣て搲慡㘰ㅣ㐸昳㠰慦㌶捤收㘰㑥ㄱ挴戱ㅦづち〱㐹戰慥㜶〵昴摡㝣㘴晢攲ぢ㉦昰㘵ㅥ㥦㍡ㅡ挲㉡㥦ㅤ挰慣㘰㌷换敦㠱㔰㉢㤱挸㌵㘷㜰〱㘳㔸㙦昴攲搷戶摥㔰㍣㤴攱㥡挳扡㙣㡣ㄹ㝣愹㈴㔴㥣㉤㜳㤰ㅡ㙦收愵㡥㠵ㅤ㘷㕦㌸㥤㠶戹慣愷慤挷扦㕡㠵㘴㑥〱㡣换昳㈱愵㜸昲挳〷ㄵ摦㑤㐵㈶㘵〳愳捡㐰挳挱㔱㕢っ愵捡㈲挴㐱㠷㥤㤰㙤搴㤶㐰㡣摢〹搵㜱昰戰㠰愳户〹摣㔲收戰㡣昹收摣つ㤶搳攰㜰ㅡ昰㤴㠹散㙡㐷㈰㔶㈴㘴搸收㘶㈳㘴〵摤㡥愴ㅢㅦ挹㐲挸捦ㄹ〳㈱㐷攱搷㑥挸㐹㠸㔶㈶攴㘴㔸㑣㤸㤰㔳㘰㙣㄰㜲㌴ち㉡㈵攴㔴攸㈶㐲〸㡦㤳㉡㄰㜲〶搴㐲挸㌱㙣搲㤹㠸㔹㠴戰㡤摡〰挴昸㠴晣ㄲ㙥㉥㠴挴㤸㐳㥣昹㥥敤㙥愰搳㈰㐱㠳㜳㘰㈰㠴慣㐴慣㐸挸昹㌶㌷ㅢ㈱㠳㜴㑢搲敤㜲ㄸ〸㈱挷㌲〶㐲㔶攱搷㑥挸ㄵ㠸㔶㈶攴㑡㔸㑣㤸㄰㥥㐲ㄹ㠴愴㔸〷敥㐶ㄵ敦㤰㜵㠸㑣㠴㄰㥥㔲㔵㈰攴ㅡ愸㠵㤰っ㥢㜴㉤㘲ㄶ㈱㙣愳戶ㅡ㘲㝣㐲搶挳捤㠵㤰攳㤸㐳づ㐲㕤敦㙥㤰愷〱攷㈳㡡㈷㘲㐲挸㄰㘲㐵㐲㜸㘶㘵攵ㅢ㐰搸扣昳㠶改戶㠶㙥ㅢ㤰㈸㠴㡣㌰〶㐲㐶昱㙢㈷攴㙥㐴㉢ㄳ㜲て㉣㈶㑣挸扤㌰㌶〸㌹㥥㜵㈸㈱㠴㘷㕥ㄳ㈱攴〱搸㔵㈰攴㐱愸㠵㤰ㄳ搸愴㠷㄰戳〸㘱ㅢ戵ㄳ㈱挶㈷攴㘱戸㔹挰㈱㘸〱户㤶㌹㥣挴㝣㜹慣收㘲㜰㌲つ㑥愱挱愳㌰㄰㐲㑥㐵慣㐸挸攳㌶㌷摢ㅤ㜲ㅡ摤㑥愷摢㌳㌰㄰㐲捥㘰っ㠴㥣㠹㕦㍢㈱㍣敥慡㑣〸捦挲㈶㑣挸㜳㌰㌶〸㌹㡢㜵㈸㈱攴㜹攸㈶㐲〸捦搴㉡㄰昲ㄲ搴㐲挸搹㙣搲换㠸㔹㠴戰㡤摡戹㄰攳ㄳ昲ち摣㕣昰㍥㡦㌹㥣捦㝣㕦㜵㌷戸㠰〶ㄷ搲㠰攷㜷㐲挸㐵㠸ㄵ〹昹㠳捤捤㐶挸挵㜴扢㠴㙥㙦挳㐰〸戹㤴㌱㄰㜲ㄹ㝥敤㠴扣㠳㘸㘵㐲摥㠵挵㠴〹㜹て挶〶㈱扦㐲㐱愵㠴昰㝣㙥㈲㠴昰愰慥〲㈱㍣挲ㄳ㐲慥㘰㤳㍥㐴捣㈲㠴㙤搴慥㠲ㄸ㥦㄰ㅥ昳戹㄰戲㡥㌹晣ㅢ昳晤搸摤攰㙡ㅡ㕣㐳㠳㑦㘰㈰㠴㕣㡢㔸㤱㤰捦㙣㙥㌶㐲慥愳摢㝡扡㝤〵〳㈱攴㝡挶㐰挸つ昸戵ㄳ昲㌵愲㤵〹攱戹摤㠴〹攱昹㥥㐱挸㡤慣㐳挹ㅤ昲て攸㈶㐲〸捦晦㉡㄰昲ㅤ搴㐲挸㑤㙣搲昷㠸㔹㠴戰㡤摡㉤㄰攳ㄳ挲㘵㠰ぢ㈱户㌲㠷摢㈰戰昰㜰㌵戸㥤〶㜷搰愰ち㐲〸戹ㄳ㠱㈲㈱㐱㐴慣㝣㙤㠴摣㠵㘴㙤〳㠴㙡㠲㄰㐲敥㘶っ㠴摣㠳㕦㍢㈱㘱挴㉢ㄳ戲〵㉣㈶㑣挸㤶㌰㌶〸戹ㄷ愱㔲㐲㜸㤶㌸ㄱ㐲㜸愸㔸㠱㤰㙤愰ㄶ㐲敥㐷㐰昱摣搱㈲㠴㙤搴ㅥ㠴ㄸ㥦㄰ㅥ㐹㕡挰〱㄰敢ㄹ昲㄰㜳昸㌵㠴攲㜱愵㡢挱挳㌴㜸㠴〶㍣挰ㄴ㐲ㅥ㐵愰㐸〸㡦ㄸ㉤㌷ㅢ㈱㡦㈱㔹晢て〸挵愳㐲㈱攴㜱挶㐰挸㙦昰㙢㈷㘴㑦挴㉢ㄳ挲㌳挶〹ㄳ戲㌷㡣つ㐲㥥㐰愸㤴㄰ㅥ㔱㑥㠴㄰㥥㔵㔶㈰愴〵㙡㈱攴㐹〴搴㜴〸㡢㄰戶㔱晢ㅤ挴昸㠴捣㠰㤵〵㥣㡤㤰愷㤸挳搳㄰㙡愶扢挱㌳㌴㜸㤶〶㍣ㄷㄵ㐲㝥㡦㐰㤱㤰㝤ㄱ戱昲戵ㄱ昲ㅣ㤲戵攷㈱〲㠷㐰㑣散愴慢〶昵ち摢㡥ㅦ戹㑤㤳摦㈲戱㘸㈸㥡挲㈷㘳扤搸〹㉦㌰㘹㜳搸〷愹㌶捥㈳捡扦扣㈸晤㤲っ㠷㜸搲㠴㈳㡦㙡㐲换捡㌱㈸戵㌵摢㤶愷攵挶㥤㔷㠴〲戳㜱ㄶ㍣戱㔲㐰㠹慦㘶㤸㙦晢昶昷晢㙡㔹㈶㜷〴㡣㥤摢㌶㈸㉢㙣〷㤶㙤摤㌳愷㐹㘳㝢ㅡ摣愷㥡㥡攲ㄷ愱㙥㥢㈱愵扢㠲㉦挲㔷㐵㈸㤰㠷昶㤲ㄹ㘰㐵〲㥤㠸㡣扢愵㈴扤㉤挱捤愵扥挲㘸ちㅢ㝡っ昲愵㔵㈳挴㝤つ㥣㑣㈲つ搵换收慡㜱昸㕡晥搲㝡搱户〷㠵搶㙤㔵昶㤱㠰戸㔱搳㠱摡〴㘶〰㕣㑦㝦戶㘰っ㑦晡昰ち晥㈷搲户敡㐹挶㜲搹㝣㌶㔱㘸敥挳㥥㜴㌳㍦ㅢ㐹攰㜴愲㉤㌰ㅤ㌹扡㤶挹㠶㔵㘷昸㕤愴㔰ㄴ㕡㤵挹慥挹㐸㙤〲㜹㝥㍤挳搲戴㥡ㅡㄶ㠳㡤ぢ攳㥡っㄴ挳㜳愹挱ㄵ㥥㘷〵扡慣挰㘱㘶愰㘹㍥〲昴ち㡡攵て㈸挲摣ぢ㈲㝢挱㔷ㄱ搸㈲搲摥㕦晡挹㘷昰㌵㈴搷㈳㔹㜶捤ㄶ攳㐳㤳攰敢㐸㘹㐴㡡㙤㡢㌹摣㘳收愲扤㠱㠰㝣㍥㈹ㅦ㔲慡㕥㐴㌹㤴㠴搴㥥挰㡤㕤扤搸㘵搵㐲愴戳摢㙡㙦㐲愸挵ㄴ愸㠷昶㤶ㄹ愰愱㕡㠲〸扢㤵摡ㅤ慥㈴㤳㑤搷挸㄰挹㔰㤳㤱㐲㐲㑡〱㕤㉡㙡〰扡捣ち㜰㕢㠶㔷昸㜰㌳搰㜴〴〲㥢〶搰ㄵ挸㤹㜵搷〸愸㐶昸㌴㈲ㄶ收昶㡥愴扦换愴敤㘸戱㉤㠴攲〶㡦〱搱㑥㘸㐹㈹㐴㐷㐳㈷㄰晤〵〱㜵っ〵晤㍥㌰〳〲搱〰㈲〲搱昶㜰㜷㐲戴慤㉢㐴㌱收㠳㉢ㅣ户〲搲㍦㤹㤲㌰㔳㥡㔶㈲戰㘹㈰ㅡ㐴捥㙥㄰㈵慤昴晦㐱㐰扥㍤搵㜶㐶㤵搴㉡㐴つ㠸挲づ㠸戸㑢㈲㄰㝤㠱㠰捡㔰挰㐵晢搲っ〸㐴慢ㄱㄱ㠸ㅡ㕣㈱慡㜳㠵攸㌸收㠳㉢㥣戳〲㜹㉢㔰㌰〳㑤㐳〸㙣ㅡ㠸㠶㤱戳ㅢ㐴摣〲㤱昴㙦㄰㤰慦㘷戵挹愸愴ㅡ㐵搴㠰愸摡〱搱昱搰〹㐴摦㈲㠰敦㔷㑤㠸扥㌳〳〲搱㠹㠸〸㐴捡ㄵ愲敦扦㜵扢搱戸户挰㉢㝣㤲ㄵ㌸搹ち㥣㘲〶㥡㑥㐵㘰搳㐰㜴ㅡ㜲㜶㠳攸㜴㉢㥤搳㉢昹晥㔷摢ぢ㤵㔴㘷㈲摤㠰攸㙢戴愶昴㐶㍢ぢ㍡㠱㠸㝦昴㐰㥤㡤ㄸ晥攱てㄹ㌰㠶㠰㐰挴㔵扦㐰昴㝦㜰㜷摥㘸㝦㜵㠵攸㍣扡攳ち㥦㙦〵㉥戰〲ㄷ㥡㠱愶㡢㄰搸㌴㄰㕤㡣㥣摤㈰扡挴㑡摦㠲㄰戵愲㝥摡㜴〸㜵ㄹ搲つ㠸㍥㜵㐰昴㉢攸〴愲慤〹㡡慣挳改户㡤ㅤ愲慢㘰㈳㄰㝤攴ち搱㠷慥㄰㜱晤捤㉢捣㌵戸〴戸攰㤶挰㌵㘶愰㠹敢敤㑤〳搱㜵挸搹つ愲昵㔶晡捥㠴㘸㕦㔴㐷㥢〳愱㙥㐰扡〱搱㍢づ㠸㙥㠴㑥㈰晡ㄱ㐱戹〹㌱晣昳㘹扢搹㈱扡〵㐹〲搱㝦扢㐲昴㐷㔷㠸㙥㘵㍥戸挲户㔹㠱摢慤〰㤷挱扣㥡敥㐴㘰搳㐰㜴ㄷ㜲㜶㠳㘸㠳㤵扥ㄷ㈱攲㍢挱摡㠱㄰敡ㅥ愴ㅢ㄰扤敥㠰攸㕥攸〴愲㘹〴攵㝥挴昰て慦㝣摡㈱㝡㄰㐹〲搱㉢慥㄰扤散ちㄱ搷愸扣挲㕣愷㑡攰㘱㉢昰㠸ㄹ㘸攲㥡㜴搳㐰挴㤵慣ㅢ㐴㕣摣㑡晡ㅣ㐲搴㡥㝡㘹㙤㄰㡡换㕢〳愲㘷ㅤ㄰㍤〱㥤㐰㜴〰㐱㤱搵㈳晤㝥㘲㠷攸㜷戰ㄱ㠸㥥㜲㠵攸户慥㄰㍤〵㈷㕥攱愷慤〰㤷㠹㤲昲慣ㄹ㘸攲㉡㜱搳㐰挴戵愵ㅢ㐴捦㕢改㙤㠴㠸敦昸㙡㜳㈱搴㡢㐸挷㍦㥦搶㠱㜴敢ち㜳挱挱㤹戶㜶㈸㔲ㅢ慡ㄴ攷㥢㕢㌳㍥㐰ㄱ愳㠸㐳愸㠷㠰㠰敢挷㘸て㥡ち挷挷㘸㙦扡㤶昷㤶㔵㕥户㔱摥扢ㅥ攵摤敤㔵摥〶㔳攱昸㠰㑢愶㜴慣㙦㐹晢㍥戰捡敢㌳捡攳㑣挸慤㝤户㝡㤵㜷㡢愹㜰㝣昶㈴昳㈳㐷㜹㥣㈷〹㥥㉢㡣昲㌸慤㜰㉢敦㝡慦昲搶㥢ち挷挷㐲㌲搹㜰㤴挷㐹㠷㤴ㄷ㌵捡攳㌳摡慤扣㜵㕥攵㕤㘵㉡ㅣ㥦搸挸㤳摢㔱ㅥ㥦攰㔲摥愰㔱ㅥㅦ㜸㙥攵㕤敡㔵摥㈵愶挲昱㔹㡡㍣〶ㅤ攵昱㜱㈸攵㘵㡤昲昸昴㜰㉢敦㍣慦昲捥㌵ㄵ㡥㡦㌹攴㤹攲㈸㡦捦ㄶ㈹㙦搸㈸㡦㐳戱㕢㜹㘷㜸㤵㜷扡愹㜰㝣〰㈱〳戴愳㍣づ搴㔲摥㉦㡣昲㌸慥戹㤵户搶慢扣ㄳ㑤㠵攳戳〱ㄹ敤ㅣ攵㜱搴㤳昲㑥㌳捡攳㈰攱㔶摥㠸㔷㜹㙢㑣㐵昹慢昶㘱敢戶ぢ㜰㈴搹摢晢愵㙥攳㥤愰戱㍦㘷挱㝤㤷㐰㠲㍢ㄶ㜵〹攳慦㐹㜰扢㐸摥愶㑥挹㜲扦ㅥ慦〷攵昰〷㈵扡昱戲ㅢ㕥ち挲摦㈸㌲㤷搴㜸〹㡥㉦㙦㔸慦愵㘸ㄲ愳㜳㌰搱㥢挳㝢㉡㌵㠹慥㍣㕥愹㡢搷攲昳敤〲晥挰㐷㘶㜳搸㌳挳〶㑣㌵〰挲㘵扣㌵攴扡昷挱㑤㡤昲搷㔸㙣敦つ㡥攱㘱扤㌷敡攷㕢㐵ㅢ户㘳㈶㥢戵㝥㌵〴㕥㘵改晦挹捣敤㘵㔷〰㙦㉡攱㘴づ㔵つ㈹愹慦挲捥㤸搸㡡挰愷㠹㐸㈵搵愶㝦捥搵晦〲㙦㝦づ挸㌶晦慣慢晦挵摥晥ㅣ㘰㙤晥㈹㔷晦换扣晤㌹㘰摡晣㤳慥晥㔷㜸晢㜳〰戴昹㈷㕣晤搷㜹晢㜳㐰戳昹挷㕣晤慦昱昶攷〰㘵昳㍦挶搵㝦扤户㍦〷ㅣ㥢晦㔱慥晥㌷㝡晢㜳〰戱昹慦㜰昵扦搹搳㍦挰慥㌵攱㍥㡥愷摣挶㙥戰摥㡡㜲ㄴ晢㈱ぢ搴㙥㘳㡣扤㑡㘲户㌳挶㍥㈲戱㍢ㄸ㈳攳ㄲ扢㤳㌱昲㈷戱扢ㄸ㈳ㅢㄲ摢挰ㄸ戱㤵搸摤㡣ㄱ㈹㠹摤挳ㄸ摢㉤戱㝢ㄹ㤳㉡愰〵㈵㔳ㄳ㈵㔵㜱愴㑡㤵ㅣ愹㜷㌰ㅢ㐷慡㔴搱㤱㉡㔵㜵愴㑡㤵ㅤ愹㔲㜵㐷慡㌴挱㤱㉡㑤㈹㑦慤晢㝦㝣挸慡愲 | G27: 㜸〱捤㔹摢㙦ㅣ㔷ㄹ㥦ㄹ敦㡣㜷搶敢㑢㉥㑤敦㡤㐵ㄳ搱搶挹搶捥愵㑤㔵㠵搶摥㡤ㄳ慢㜶散㘴㥤㐴〲㔵慢昱捥ㄹ敦搴㜳㌱㌳戳㡥㤷㤷㡡ㄷ晥〲㕥㐰㐲㝤〶㈱㈱㈱㈱㄰㉦扣〰ㄲ㔲ㄱ攲〱㠹换ぢて扣㔱愱㔴㠸㐷ㄴ㝥扦㌳戳敢摤昵㝡㤳扡㐶昲戱晣敤戹㝥㜳捥㜷㍦摦㔱㔴㐵㔱ㅥ愳昰㤷㈵挷捡㑢搵㔶㥣〸扦㔴づ㍤㑦搴ㄳ㌷っ攲搲㝣ㄴ㔹慤㘵㌷㑥㐶㌰挱愸戹ㄸ㡦昵㕡散㝥㑢攴㙢㍢㈲㡡㌱㐹㔷㤴㝣摥搴㌰㑥㈴晣㥦㙡㌷㑣慥㉡收〰慡攵㠵搵㡤㡦㠰戵㥡㠴㤱戸㌰㝤㍦㕤㝢晤敤搲攵搲摣散散㕢愵搹ぢ搳攵愶㤷㌴㈳㜱㍤㄰捤㈴戲扣ぢ搳㙢捤つ捦慤㝦㈰㕡敢攱㤶〸慥㡢㡤搹换ㅢ搶㤵㙢㜳㔷慥㕥㜵摥㜹攷㕡ㄱ㕦㔶㔶捡ぢ㙢㤱㜰攲㈳㐲㘹㄰攵㙡㜹愱㜴㕢㈴㐷㠴㜲ㄴ㈸㙦㤷ㄷ㉡愱㙦戹挱搱攰搴㐹搷换ㄵ㔱㜷挹〰㈱㈲㌷搸㉣㘱搳㍤㐴㐶敢敤搲㈲愸㕤户攲愴㉣㍣敦慥㜰戸㤷愲㑦㠲㠹㐸〴㜵ㄱ㑦昸㌷㜶敢挲换㠶攳扣㝦摦㡡㙥㕢扥挸戱㌲改愷㍣㕢戲㐵㤰戸㐹㙢摣扦ㄷ㡢扢㔶戰㈹㌸㐵昷㙦㌶㕤㍢㤷㔳㜳㌹㘵攴慢㠳㌶㈳ㄹ㔳㕡㡣敡攵㠶ㄵ㈵戲㐵㤶捤つ㥡摢㈵ㅤ㜲攳㍤摢愲〴㑤昷慤㈲㤳慡慥晦㠱㠸〲攱昱㈳㘴摤㑣摦㈴㐹㤳㤴昲ㅤ攲戴㑦㐳㕡愸㘳㤹捣换愳愰挳捣ㄳ㤸〰㐶〱攰挴つ㙡㐲攴搶㜱晡改㌵晣ち㜳㡣ㄳ㡡〰㙡敥摦搰愰㙥〴ㅣ搲㙡㤶㔶摢搰㙡㜵慤㘶㙢㌵愱搵ㅣ慤戶愹搵ㅡ㕡捤搵㙡ㅦ㘹戵㉤捣㘹㤷晣攸愸㤶㤵晦㑥晦攱捦㝦晦攵搷㤷㝦㌵晡㔱敥晡㑦扦昳敤攲〴㈶摤挹㌶㔷㠹慣㠷攰昰㥥散㕣㉡捤昲敦挹㉡〳㡤㜱慥㍡㙦㍢㜳㜳昶搵㔹敢戲愵昳㜸㑦换慢搳㤸㕢㜴ㅥ戸㠱ㅤ㍥㤴捣㉢㍡㡢慥㤷㠸㐸㌶㈶ㅤ晣愴〲㈸摢攳捥㡤㕤愸㙤㍤攵昳㘹愷㉣愲〴〲㥦戴昶㤸晦搲㠲ㄵ㡢扤收㑣㠶㝢㈱㙣〶㜶晣攲攰挱㙡㘲㈵攲㠵晥戱㍤㈴晢㤶㔵愱つ㈲㤶㕢㝡愵㝦搹㝤换㙢㡡昹㕤㌷ㅤ㝥戹㙦ㄸ㝡ㄱ㙥ㅣ㍣扡ㄸ㠹㙦㜶㐶昷敤㘸ㅥ〶㜳㐷攲摥㜷捡㜴㈸摤搷㜴戹ㄱ挶㈲㤰摢㥢昱搷摣晡㤶㠸慡㠲㐲㈶㙣㜹搴㘷㌸㤴㈹攷捣㙡㠰㠳㐲摤散慦㜴昷㤲搰㈲戰㠵㡤晤㙥㠳捡慤㜵㙢挳ㄳ㘷㝡愶愴摦挴挰昳㍤摤㡢㘱扤ㄹ㤷挳㈰㠹㐲慦㜷㘴摥摥戱㘰㄰散㤵搰ㄶ㌹㔹㤴ㄴ慡捡挸㠸慡㉡慦つ搲㉣攲㡥愹㝢㕤㐲㐲つㅦ㍥戹㑢㠸㌸㜹愰捥㜶㌰愳搲㈵㘴㥣晦晡搰㥤㜴ぢ㈱㘷捦づ㥤㍤㐰㐸戹攸戹㕥挵㉢摤〵㝦挰〷㑦㔰㉢戵㜳〷愳摣㤳换㈷散戴㡢㉢昴慥㥣㍤㠴㘸ㄲ㙤㐷昶晥扦㤳㌵敤㔴㜶晡ㅢ㍢㌰晢户慣挰昶㐴㌴㌴㌶㔰戹㈳㜳㤲㘰㡡攰〴挱㐹㠲㔳〰晡㘷㌰㤳〷㔲㤴愶㕤摤㔵㕢晡㐳搷㑥ㅡ㐶㐳戸㥢㡤〴㝤㠸㈹昲㜹㤲㝢㕦㌱㥦㐱㤷㜹㠶攰㔹㠰㐲㐱㌱㥥攳㈴愳㠰愲攸戴摤㕦摣挳㌰㘲㌱愵㐳㐳戸ㄱ敢㍥晣㘶㍣㌲㌲攸搴户慣戸㤱㔰攱㠶づ昲㔸收昳〴㉦〰ㄴ㕦〴㔸戹㈵㍣愸敢ㄱ㐵㉡㍡㥤捤ㄳ㝤㈲㤹㜰挶慦戶㠲㝡㈳ち〳㐴㙤ㄵ㉢戱收敢㜰晣戱㙡ㄹ晥㜲㔸㙥㈶㠶㝦换挵㑦搱扦㉢戶㠵㤵㤴㘱㡤㤳㜱㝦ㄹ㐱㠳㌴㤷㑢昶慥敥愷晥扥㈲攲扡挹挰㘰〹搶㘷搷㐰つ收戴攸搳㥥㠸摤㠴愸㐷晤㌵ぢ㠱㐵㘲㘲搲㡣㕣㤵搶戸㜲㕣昶戵㔷ㄷ戲ㄶ㌰㑣挹㙡ㄷ㤶㌱搹㤱㘲㔲㐸㐹〵〶㐸ㄹ挹㘵戰㕦㔱敥㈵慥ㄷ㤷㌲敡㤶㉡㈱愲㐶㈱攳㔶㔲摤㌰㈰㐷挶㔰㕥昵敢㌳㈳㡢搵晡㐶㡡ㄶ㕢戹ㄹ㠵捤㙤㐶ㄷ㐷㠵㠷戸ㄴ昳㈵㠰㑦㍥晦搱扢攷㝦昰㤳挷搹敦挷搰ㄴ㔹㡣㤷㌱㌸㈰昸愰愰㜳〲㝥㘴㌱捦攲愷㘰㜲戶㌹㜸㑣㘷愸㌲搰挴ㅥ㄰ㄶ㔱㤷㡢㍥捥扦ㅥ〹ㄹ攷攵㘵愳戵㉤挶晤〷㘱戴戵ㄱ㠶㕢ㄴ㠷〹搹㡡ㅢ㐲㈴っ㥥挶戲㔸㤱㜵㔵㔵㐷㐶㝡〲愳慥㈸㡢㘱㤷昱㉡挰昸扣攷㑤户㌱挶挶㌹㜴㡤㌰㡣㍢㡦捡戳㉢て㔶㙢换攵㜲敤搲散摣散挵搹㉢ㄷ攷㉥㤵㜶扤搸㔷晦㡡挳㌳散ㅡ戹昹挹㡦㝦昳㐷昳㠳敦晥改昳㝦㝣昸ㅦ攳㙦敡㕦戲㠱晥㐰㑡愷㔹敡㤷ㄸㄹㄶ㜶㕣㑣㤷昳愲挱㌱㥣㝢㠱㥢挴㘳捥㝣㌳〹ㄷ摤愴ㄲ㈷㐵〷〰㔵戹攴〵㘹㡤扢ㄶ捤㌸昷㕤昱㜰ㅤㄴ㍡扢㝦〸ㄱ㜳戹ㄹ㈷愱㔴㠶㔷昶㡦㔷挲摢㘱㔲㜱攳㙤捦㙡㥤ㅢ㌰㥣㡥㍣㘸㠸〰攱㐱㠴㈸攱㐹㤳挲敤㙤㘱て搸㘳㌵㙣㐶㜵戱㔴㌹づ〱㠶㥡㙡戵〲㌱㠱㑥慢攷て㜶愸㕤㜴愷㘰㙡㄰㉤昵㜰晥挹㜸つ敢昵㜳㙦㙥㍤㘸㈸收敢愸搳愸愸昴ㄹ㜰ㅡ㜴㕢挳㠵愴㉢㘸愱攵㉤㌸㘰㙣摡㌷㥥㐵挵㑢㐱散摡愲㤰戵㔶摣㘰㈲慢慥㌶㤳㥥ㄱ㙢昷㔴㌶〲つ㔸つ挰晣扡ㄵ搹挷㠱㉦愴ち戴㔰㌲㐵㌵昰㜷㌸㔲愷㘸ㄴ攵㔱㍢扦昰攸㘳戸㘹搲㤹㤱挱㐰㘳搴㔱㐶㔴扡攲㍤㉡敦㌸㐹摤改捥戳戵㈲慣㐰㜲愰㥡搸ㄵ戱㌳㈱㘷〸㠸㌷慥愹㥥㌸搵摢㤴㕥捡㜴收㌷攲搰㙢㈶㘲愲㔳㤳㙡㙥㍡㜷㠵㘷㌱㜶㉦㜶㙡㙢昵〴户㥢づ㍥挶攵挷㠷㍢愰㐸㉥攳㤰㉡㜹㘴っㄱ摣摥㐳㔰㠳づ挹㔱昸㕦㐷㤶㝦扤愷㝥晦㝢㉣㍦㝣㑦㘹㔷挸㕢㌰㤷挱挶搳〷攷搴愲㔳敤㍢㘳㙡摦愴改㉡戶晢ㄸㄷ㡦㍢搲敡攱昲换っ挵㈴搵挶㐳敡㈸㜱敢㤶攷戵㈶㥣愵愰敥㌵㙤戱㙣㙤〸慦㙤戱挳挸㍦㈶晣㤲㔹戵㤴㔷㐳攸㤲摤㔸㤶㤰㕡㙢㕦〵づ㙤攴ㄴ昳つ㤰㔵㠶〲挰㤱戲㠵㌱昸ㄷ扥〵㌱昹㜱㜲敦づ㉦㤳㍥㌰㘹晢扡㘸换ㄸ㉡㜶㉥㔲㔲摢扡愶㉤㠷换㈱㉥戹㜶㔷搷㉤㌷敤㍡㌶㍡㈵㔹㘴ㄸ挶㘱㕤ぢ㘸㠵昲㈸㡢捡㘰散搲昶㝢扣㥣㔰㌱㜸㘱改て㌲扢㐲㄰改昵愵〱愴ㅢ㥡愴昵㑡㐳㠶㜵㌷昱挴㤸㈳挷㘵㍤㑦㜵㈰㌵㐷㥤昵〶挲戳捡戸㜳㌳㜲㙤捦つ〴挳て㈴㕤㤸㘸㕢ㄶ㥢㐸て慣㠵戱换ㅣ敥戸戳ㅥ㔹㐱扣捤戸扣摥㍡搹搳㤲捣搲㥤〵㌷㠰昲愴摦㘴㝤搲愹㌶挲㠷㐸〳㌷晤攰愶戵ㅤㅦぢ㐶㌱戱㥣㤶㔴愳㌴㔵搳搴扣㤶㍦慣㡦㠲㠴〳攵㈵愰搴〸㌲㔶昱㕡㌹㐴㔷挹愵㉣㌹㐳㕤攵㥥㝡搲愹〳㙦㡣㥤ㅣ㍡敤慦㜹㠱㙢㉥〲㉣摤扣户戴㤷搲晢㌲㠹㜰㥤昷攰㈱㕥㐰㑡㐵㈷㝤㐰㘹㥣㐸㈵㠵㝤ㄴㅣ㔳㌲㥣慤㝥改㉢㌸㜲づ〵ㄱ㡥㤳搳㔹㕤挴㡤慦〸扤㠷搵挵㐵ㄹ收㜶㈲㙤㌰㡥昳㉤㉦捥挶捡愱敦㕢㤴㉣㑡㘵ㄵ㈶㕢攴㘵㔰つ㐳㘲㍡〰㔲晣戲㉥㙢ㄷ㕤搶慥散㠲㈷㘶㑡㔰搶㠹㉢摣戴㈲㌷㘹昸㙥㍤捦〶搳㜶挷㐲㈴㈱㐱昲㜶ち㠲戲㐸戹㐴㠴摡㝦㉢㑦㉦㤲攰㜶〹㤷〶㤲㡥摣㠷攰㙡搲㝤慢㠷捣户㈰㝣㌵ㄹ搲㥡㙦〲攸昲挵㠵昷㘳㤶慥戸ぢ㍤搲〶攵㤸㡢ㄸ㝡ぢ收扤慣戰ㅣ㕡昶㈲㜲戸㘱㌴㥡扤搰攴挱㐴摡㡥㘸㡡㠹㡦㌲戲㠳挸㍡敥㈰搰㡤昲散愸㈲愷㤰㘳捡挴㐸戹㐵㉡㈸扡㍥㤶ㅦ昴慤愵㌶慥㜳搹㝤戰晢愵㘹㘹ㅦ晥捦敥㕣㠳〹攵〱ㄸ㉢㤸戳〴㜳〰㉡㔳㉡㍣㑦摦〴慡戱㜹ㄹ㐰攷搵扡㕦ㅦづ捣ㄲ昰㉤㐵昷㤹扤挸晢㍣づ㘲ち〳㌹つ㘴㐱㐰ㄲ㘳㉣捦㉣㠲㜹〵攰昷㥦㝥㝡ㅤ㍦㡡㝡ㄶ愰晤㝤敡㜴戶挱慢愸㥡㙦〱攸扣㕥㍣摤愵㠶㔴㥦敡扡㘹㔲ㅢ攳ㄳ捥㥤愶攵攱挹㘱ㄵ〱㑦挲慥攳㈰敥戹㌴散散㝦㍤攸㝤㠷挱㝤㑤ㅥ攱ㅢㅦ㌲挹搱㑦㠳摥戹搹搹㘲捥㍣㕣㔸㕡搰㝦㠷㙢晦搳㝤㠵扡㌱扡挳㡣㔵慤㠶㑣づ㕡㘴㝣敡愰ㄹ㌴つ戱晡㝤ㄱㅡ㌱㥤摡ㄳ㕤㥡愳ㄹ㡦㑦愴㠳㘴扥搷昸㕦挳㔲㤵ㅥ㠰㌸捣㜷戲㡡㤴㐰慡昱ㄳ㉤〷捤つ㙥㤸戰㈱搵愴攵挱㙥戳捡㙣㑣㕡愳昸愶挳搸㕥ㄸ㈱晥捣昵㈷㕥㍢㙢㤹敡ㄸ㍢摤㤷攸㤶换㌸㐲ㄳ愵晦ㄶ挴㍤㜰㝤㉦㍤摢㤹㕡攳㕤㉣㍣扤攲搶愳㌰づ㥤㘴扡㡡搰㘳㥡㑦ㅦづ㠲搰㜹晤搷挰㌸昰㥢㍣㔸㉥攰慢愲㘴㔱㘱㉢〸ㅦ〶㜲㌷㝡捣ㄷ㈰㐹慦搱㔱㝥㠶愱愹㉣慦㠲㡡㔳戴ち㉣㔳戴っ㉣㔳搲㥢戳㐲㔳挰㌲㐹攵攵㉡㌲晤㐸换ㄴ㔵㥥摣㌳㘸ㄸ㑥㤴ㄷ㙡扤て愶挶搷搰㕤㐴户㌴㡥㜷昱㔸㘲搰愲㑤愰愷㉢㤲㤸愲捤㈰ㄶ昳㝤〲㈶戰攵㌳愴㉡愵㠵慤㌲㐰扢㑣㔱㙡㐸㉥戳〲㌰㍥愲扥㡦ㅦ㈶昹捣㔷〹捥ㄱ㥣〷㔰㝦㤱㘵挴昶愵捡㝥㥥つ昴愷捡愶摡㥦搱㠹昹㡤㠳㤳㌲愹㍦摦㝢㘷攳㉤㕤㜷㈸㠶㘳㑥晡捣㐵ㅢ㈰㌳㈱㥥攴㘱ㄱ慥㍤挲㑢搷㌲〲㔵㌸㜴㍣摢㘶㜴㐲〰㑢挳摢㜶㈹愶㙣㜱戱攱慣㐶昰㌱愳捥㔲㡣㜰搸捥㈳慦㥣攰攵㌱㌸づ㠶㄰㕡㤵愳扦愵慦㠳换搵〶ち㌴㈵戵摦〵㜵挵晣㝢昴㘸摦昹㌴㐶〴㠷㌳㠳昲扥愷愹㍦〳㕦愹㘰㠵㝦㕥㝡晥戱摣㥦愲㈹收㌲㙡〵㔵敥㔷㠵戹㤳㜳㈵㔰㜴づ㍤昵ㅥ扦㠴搵扢㡤敦愸ㄲ愰搲㈳捣㘳晦〳㠶攲戹搸 | H27: 㜸〱捤㕣〹㜸ㅣ挵㤵㥥㤲㌴㈳昵㐸戲〴㜶㌸㙣㈰〲㝣攰㑢㤶㙤っ㘶挱㠷㉣攱〳㑢扥㈴摢㄰〸㘲㌴搳㘳つ㥥挳捣㡣㙣㈹㠴㈳㠴㜳㘱〹㈱㤰㌸〴㜳挴㈴㐰挲ㄵ㉥㤳㙢㈱ㅢ㈰㈴㠰㜱〲㠱㑤〸收挶㈱㤰㘰㤲㜰散㜲㜸晦晦㜵昷愸㘷扡㝢㘶攲挵摦攷挶㍣㔵搵㝢慦慡敢晦慢慢慢㕦㜵㡦㑦昹㝣扥㕤㌸昸㤷㐷ㄵㄳ〷㜵つ㘶戲㝡愲戹㉤ㄵ㡦敢攱㙣㉣㤵捣㌴户愶搳愱挱㡥㔸㈶㕢〹㠳㐰㑦っ晡㡣扦㈷ㄳ晢㤲㕥搳戳㕥㑦㘷㘰攴昷昹㙡㙡戴ち攸敢捤晦ㅢ慤㡣㐶㉦慤㡡〲㔶㍥㉤㐰㔱㑤㔱㐳愱㔱〴㈹㙡㈹敡㈸㔸㠷㌶㡣愲〱愲慥ㄱ愲慢㙤摥搲摥搳㜱㐶㕤搹㔴㕡㥦搴戴捡㘸㜷搶搱捤搳㥢愷戶戴ㅣ搵摣㌲愹愹慤㍦㥥敤㑦敢戳㤲㝡㝦㌶ㅤ㡡㑦㙡㕡搶摦ㅢ㡦㠵ㄷ敢㠳摤愹戵㝡㜲㤶摥摢㌲扤㌷㜴攴捣愹㐷捥㤸ㄱ㍤收㤸㤹㜵晢愰攲捥戶㜹换搲㝡㌴昳ㄹ㔵戹㉦慢㕣摡㌶慦㜹㠹㥥晤㡣慡ㅣ㡥㉡㤷戴捤㙢㑦㈵㐲戱攴㘷㔳愷㥦㥣㑣㙦搷挳㌱㤲愷敢改㔸㜲㑤㌳㑥㍡て㘴攴㡥㙥㥥て戴挳愱㑣戶㑤㡦挷㔷攸㔱昲㔶㤷㈰㘰㝡㕡㑦㠶昵捣戰挴昱〳㘱㍤㙥慡㌳㌵㠹㔵愱昴㤲㔰㐲慦㘲愲㈱㘱㜰戶㈸愲㈷戳戱散㘰㝤㘲㘵㐶㕦ㄱ㑡慥搱㘹攲㑦㉣攸㡦㐵慡慡㔴㔵㤵慦㜲㥣摢挹〸㌱捤昳搳攱戶扥㔰㍡㉢㌹㔲㌶搵捤搶㌶㍡攴挴昳㑥㡢㈳愸愹挰㡢㈴㜵挵ㄲ㡢昵㜴㔲㡦戳ㄱ㔲㌷戱挰㐸㌰㌱㤰捦㠱㘳昵㠶扣愸㕡昳㝡㘱㔷搸㡡㌶㠲攲㜳㄰㠱晤㈰㠶㜷戴戵㌵㑤㙥㡡敢敢昵㜸搳㜴愴㍡㔷㉦搵昶愷挹〱㄰慡㙡〷慥㍦㝢ㄵ扣〶㉡㝡㐲ㄵ㍤扤ㄵ㍤攱㡡㥥㐸㐵㡦㕥搱ㄳ慤攸㔹㔳搱搳㔷搱ㄳ慢攸㌹扤愲㘷㉤㙣慣愳愶扡扡挲㍣ㅥ㝣晡㘷摢戶㜴扥搹㜱改挵㠷搷摤昵挶慥㜳ㄴ㉦㌹戹昶㐶㈲愱㡤㠲〸ㅣ〴㌱扥㍢㤵つ挵㥢㕡㤳挹㝥晣㌹㍥愹愷搷っ㌶㠱㤷摣㘹㑥㐵慡㉤㤵攸㑤㘹〷搳昱㄰〸愵㕥挶㠹昲㘴攷㝥昷摤搸㝥㈳㈷户㥤㝢挸敢㤷敦戸昵散戹㡡搷戴戴搲㐴攳㐳㈱〲㠷㐱攴㜵晣㐸戳攳㠷搳㘴㌴㠴㔲捦㥢昵㘵晦㜸昹捦㝥扢昵扢ぢ慥摡昵摥㑤㜳户㙥㝡㔶㜱㝡㤰晡挶搲㜸ㅣ㐴攰〸㠸扣晡㜸㠶〴㜲㍣㑤㈶㐰㈸昵㝢戳扥㤳攷㔷㍦搳晥捡敡捥㑤摢挶㙣晦挹㡤㈷㘶ㄵ㐷慣搴㌷㠹挶㤳㈱〲捤㄰㘳っㄴㄶ㈵㌳〰㈳慥㐷㥡㤶愵㘳攱㈱っ㕡捣ㄶ愶搰愹〵㐲愹愷捣ㄶ愶㉣ㅦ㜸㙥㙡㈴搶㜹摦愹搱扢㙦昷㈷敥㔰㥣挶愴㠵㘹㌴㥥づㄱ㌸ㄲ愲㐴ぢ㔶ㅦ㘶搰改㈸〸愵㝥㙤戶㌰攳敦慦㘸〷摦昵㤷昶慦㑣㌹㌸㍥晤挱㜸慤攲ㅣ㈹㉤捣愴昱㌱㄰㠱㝦㠳ㄸ㔷扣て搳㜲㍣ㅥ㑢户攳㈰㤴晡愵搹挶㡢摢㕥㡡㑥扤㘴昳〹搷㍣㜰挸㌷㙥敡㝥㝣㠶攲ㄴ㉣㙤捣愶昱ㅣ㠸挰㕣㠸ㄲ㙤㜰㐸ㅢ㘳愵㤵㙥昳㈰㤴晡戹搹㐶敦㡥㠵㤹㐷捦ㅣ散戸㜲挲㐷敤搷㜷扥㝢㠸攲攸㤶㌶摡㘹㝣㍣㐴㘰㍥㐴㠹㌶㌸㝡㡣㌶ㄶ搰㙤㈱㠴㔲㕢捣㌶戶㝦㌲敥㡣㌷㤶㡣㍡㘱攳㡦㍥摣㜸换㤴㠷㡦㔷扣㠱㐸ㅢ㈷搰㜸㌱㐴愰〳愲攴愸ㅦ敡㐹㈷ㅤ㤷㐰㈸昵㈳戳㤵愷搶㥦㜷攵慥ㅦ㙡㥤㜷㘴て昹㜳晤㈵㘷㝤㕢昱づ㈵慤㉣愳昱㜲㠸挰ち〸戳㈷摥搷㤶㌵〵㜴搱慤ㅢ㐲愹ㅦ㥡㙤㝣晢捡昳㔶ㅣ扣㉤摡㜱挳㤹户扤昱摥散昷㥦㔵扣〱㑡ㅢ慢㘸扣ㅡ㈲㜰㈲㐴挹㌶挸㍢慦㡥㤳攸昶〵〸愵扥㘷戶戱昵扣敦㕥㝣搰搶㡤㜳㌷摤㍤㘱㜸敢换扦改㔲扣扦㑡ㅢ愷搰昸㡢㄰㠱㔳㈱㑡戶㘱㡤摥ㅥ扡㥤〶愱搴昵㘶ㅢ㔷捦㙣㝦昵愳搸改㑢㌶㝦㘵换㘱愷㕥昶㜲愰慥ㄷ敡攵收㌴搹㥥づ㙤挰扤㘶攸㉥㌶慤戹㠵晦㤵扥㜹攳摥ㅤ㥤ㄱ㍤㍡㍡㜵㙡㘴㐶㑢㘸㝡挸捦㠹戶摣扢〶㙤敢愲慢㘳挹㐸㙡㠳摣㐶敡愲昳㘳昱慣㥥㤶㑣㐳ㄴ㝦㡣㕢愱攴敢愳挷て㘰〱ㄱ㌶敥㌸㈳愲㙤㝡㍡㡢㕢㙦㜶㜰攸㌶㜴搰扣㔰㐶ㅦ捡㑥㌴敢㥥㤷敡㑦㐶㌲愳摣㤵㕤搹㔰㔶ㅦ㔹愸ㅢ慡挴攱搶㠵晢戲㥥㤱㔳㍡愴搰㙤㔵㈸摥慦户づ挴っ昵挱〵㙡摣愱㔳扤摥摡昹㘹晤㡣㥣搶㜱㐶慤㔸昶慤㤷扡ㅤ扤㌴㔴挶㜹㌵戵昵愵㌲㝡㔲㑥㙦㘲㘲㔹㉣扣㔶㑦㜷改㕣㌴敡ㄱ改敡攷愸㌲㤷〹ㄳ㤷㈶搱㔱摣昸㈳㠷搹㑢〹戴㥥㡣攸ㄱ㥣敦㍡愰㍣搸ㅤ敡㡤敢晢攵㤹ㄸ㙤㐲㜱㘰㕥昱晣㔴戸㍦搳㤶㑡㘶搳愹㜸扥愶㌵戲㍥㠴愵㐹愴㌳ㄵ搱慢攴昰ㄹ㔲昹㉡㉢㤵昲ㅤ攱㜶㡦㘷摤ㄹ慥〲㙣㠳㠴㙢㡤攲挶戶㐱㐴㘳搷搵㐳慥㘶㈴㙣㠳㡣昶攳㡢㥥㠹㝤㄰搲扡愵愸戵换㈰愵搳〱昹ㄷ㕥昳ち昰〳ㅥ攲㍡慦捡㡡搱摥㔵づ㡤换ㄲ㘷㙡㘳㠵捦〸戴㉥〲㥡㔴㥢ㅢ㝢㝢搶戸愲㘲戸搹晢攳搷㘳〱扡㌰㤴㡣挴昵㜴搱㈷ㅣ挵㌳搲挲ㄴㄱち㥤㈲㑡戱〶挲扦ㄱ㜳㥣㈷愲㔵戰㔰〳㙡搰扦㈱ㄶ挹昶〵晡昴搸㥡扥㉣捡昰㘴㔴㔳㐳戸ㅤ㠷ㄶ㐳㤱㜶㍡〵ㄷ㜵挱愰㉦㄰愷㔱㈰㠸挳攷攷㉡昲㕦㕦敢㔶挰㑢㤳愵㌵ㅥ㝣㌲晥〴㔶昰㤹捡㑡户㕥㉦っ㘵晡戲扣攰㡡㉡㘵㔵㥢㘰愵㐹㠸扡ㄴ㐴攷㐲㍤㡥换昵㌳㝡㘶昲㜳㍤㕣搶敡㝣扦㐴搷㘰㌲摣㤷㑥㈵昱散搹ㅥ捡㠶㕡挳㜸〴挹愸㔰㈰搱㤱㙡敢捦〶ㄲぢ㘳昸㔳㤷㔸愱慦搳㐳搹㌶捣挶搹晡㐴〷ㅥ㕦㘴扡㕣ㄴㄹ昰㈷㡣㈷㡦㜶㍤ㄳ搶昸㠸戲〸戳捦㐰〰㈹㑣愷㜵〹捥㈷晡㐰㤶㔵㔷㈷㤶㠵昰㠸㤳搵㘰㌴㔱扣㡣ㄴ㍤敢愵捣昲づ㥡㌹搴搰㈸㐹㕢㉤戵㔲㘰搴攴攳〰挱㡤ㄲ㜷摣㉡㔳ㄶ㕥㈸㉢戳戱㜸愶搹㐴户戹㍤㠵攷㔷㕤㥥扥㠹㝡㈰㠰㜱ㄴ㈸捡㔵攱昵捣㘷㥣愵攱㕥愳㕡㥣捡㠲㜴慡㝦ㅤ㥦㜳㍥慢㝡㔸㤷㑦㕢〷㜱晤扢㍦㌸㜶捣愶㍢㜷㤹㝦捦挱㤵㈲㐷攰っ㈸昳㔶敦搶ㅡ㠸㐳㥤㈶昸㈳㠷㤶挱㥦愰㐶㝢捤㕤攷攷㐳㤳敢㈴敢昱㠸挶㠷㤳扡〴㄰攸㑥敢昲捣㔹㈳㤹挱㜵㝡㝤㘲㜵㉡扤戶㌷㤵㕡换〱㌱㑣㜲㤹㍥㕤捦昲㐱慥搶㝣㙥㘵㕡㈹㔵㔹㤹昷㠸㘶㝢攲攳㈳㘰㘰〳㐴㝤㙢㍣摥㘴搵㤸〹っ愰愸ㄲ㌷㤳挰㈰ㄲ晢㘳㌱搶㠳攷挰㥥㘹㉤㔳㕢㈶户ㅣ㌹㜹敡戴收㠱㜸㈶愱㉥㐴攷昹㑣㤵㙥ㅢ扦敡收㑢㍥㕣昲ㅦㅤ㍢㐶扥昹散㠸㙡㜵㠱愹㜰㍣搲昱㐹㡥㙢ㄹ敤换ㄴ㘷㔱㥣㑤㜱づ挵戹㄰敡ㅣ戸㜲㤶㐲㍡晦搰捥㐳㕥晢㉡挵昹㄰㤸㕦〴㘴㘳慡㔱㝣㍡攴㜴愳㕤㐸㜱ㄱ㠴攲挳ㅦ慦㑣㥦㜶㌱㠴㈷扤㤷㐰㔹㜲㜱㍤昴㐸改㈰昶㔲昸〷㌵搶攲㈴㕤㜴㡡て愰㈴㕥㈳搰ㅡ愱搵〸慢㑡㥡㈸㌹攰㑢㤸ち挷戳㙡ㄳ摣〴扥慢㔸挹搵ㄴ摦愴昸ㄶ挵㐶〸戵挶ㄳ扥㙢㘸昳ㅤ㡡㙢㈱ち攰攳㘳慦挰㜷ㅤつ慥㠷㔰㠷㐳ㄸ昰摤㠰㤴㈷㝣㌷㐲㤹㜷㜵㔸捦捡づ愰㌶挳㌲愸搱摥〹㤴攸搴㘸攸摣㠰㕡攵〵搴㑡㔳攱㜸〸攷戳户〰㜵ㅢ㥢扢㥤攲づ㡡㍢㈹敥㠲㔰㑢㍤㠱扡㥢㌶昷㔰摣ぢ㔱〰搴㌸ㄴ〹㔰昷搳㘰ぢ㠴ㅡて㘱〰昵〰㔲㥥㐰晤ㄸ捡㍣愰慣㐷㄰〷㔰㍦㠵㘵㔰愳扤ㄳ㈸搱愹〹搰戹〱㌵摢ぢ愸㔹愶挲ㄱ㕤㤸㠴㥡〴愸㠷搹摣㈳ㄴ㡦㔲晣㡡攲㌱〸㜵戴㈷㔰扦愱捤攳ㄴ㑦㐰ㄴ〰㌵ㄹ㐵〲搴㔶ㅡ㍣〵愱愶㐰ㄸ㐰㙤㐳捡ㄳ愸摦㐲㔹㈲昶㘰㐵㌷ㅣ搰㍤つ摦愰挶ㅡ㥣搰㠹㑥戵㐰攷〶摤㔸㉦攸挶㤸ち㐷搸㘴ㅡ㙡ㄲ攸晥挴收㕥愰搸㑥昱㈲挵㑢㄰敡昳㥥搰扤㐲㥢㔷㈹㕥㠳㈸㠰㙥㍡㡡〴扡㌷㘸戰〳㐲捤㠰㌰愰晢㌳㔲㥥搰扤〹㘵〹攸㍣㐷摤㕢昰つ㙡慣挱〹㥤攸ㄴ㠳㍣㙥搰つ昳㠲慥摥㔴㌸攲㐱㌳㔱㤳㐰昷㑦㌶昷ㅥ挵晢ㄴㅦ㔰㝣〸愱慡㍤愱晢㕦摡㝣㐴昱㌱㐴〱㜴挷愰㐸愰晢㤴〶扣㠹愸㘳㈱っ攸㝣㔸戹㜸㐲挷〵㑤㠹㌸捥㔰㍣捡㌱敥㉡攱ㅤ搴㔸㠷ㄳ㍣搱愹攳㜰ㅡ㙥攰扤晦愹挷㍤昴㍤㔳攱〸㜴捤㐶㑤〲㕥ㅤ㥢慢愷ㄸ㐶搱㐰搱〸愱摥㠱慢晢㍤㜴㕦摡っ愷ㄸ〱㔱〰摥ㅣ㔴㉣攰敤㐷㠳晤㈱㔴㙢づ扣〳㤰昵〴敦㐰㈸㑢㠰㌷ㄴ㥥㜲㠰㌷ち摥㐱㡤㜵㌸挱ㄳ㥤㥡攷〱摥㜶㉦昰㕥㌰ㄵ㡥〸㕥扢〵摥㘸㌶㌷㠶㘲㉣挵㌸㡡㈳㈰搴㜳㥥攰㑤愰捤㐴㡡㐹㄰〵攰㌱ㄸ㈸攰㌵搳㘰ち㠴㕡㤰〳慦〵㔹㑦昰愶㐲㔹〲扣愱〸愲〳扣改昰づ㙡慣挳〹㥥攸ㄴ攳㡤㙥㈳敦㔱㉦昰ㅥ㌱ㄵ㡥搰攴〹ㄶ㜸挷戱戹㔹ㄴ戳㈹收㔰捣㠵㔰て㝡㠲㌷㡦㌶㙤ㄴ敤㄰〵攰㉤戶挰㥢㑦㠳〵㄰慡㌳〷摥㐲㘴㍤挱㕢〴㘵挹搵㕢㤱戱户ㄸ晥㐱㡤戵㌸攱ㄳ㥤㕡攲〱摦ㅤ㕥昰摤㙥㉡ㅣ㌱搷㘵ㄶ㝣摤㙣㙥㈵挵㉡㡡搵ㄴ㈷㐲愸㥢㍤攱晢〲㙤㑥愶㌸〵愲〰扥攵ㄶ㝣愷搲愰〷㐲㜵攵攰㍢つ㔹㑦昸㐲㔰㤶㡣㤵㝡㍥敦㠴攱ㅤ搴㔸㠷ㄳ㍣搱愹㙥て昰扥改〵摥搵愶挲ㄱ㑣㕥㘵㠱ㄷ㘷㜳〹㡡㈴㐵㡡㘲ㅤ㠴晡㥡㈷㜸㘹摡㘴㈸戲㄰〵攰慤戶挰㕢㑦㠳つ㄰敡愴ㅣ㜸〳挸㝡㠲㌷〸㘵㐹昰慣㘰戶攳挲㍤ㄳ摥㐱㡤㜵㌸挱ㄳ㥤㘲攸摢敤挲㍤摢ぢ扣戳㑣㠵㈳㑡㝥㡡〵摥昹㙣敥〲㡡ぢ㈹㉥愲戸ㄸ㐲㙤昰〴敦摦㘹㜳㈹挵㘵㄰〵攰㌱攰㉥戳摥攵㌴昸ㅡ㠴敡挹㠱㜷〵戲㥥攰㝤ㅤ捡㤲攰㜹㉥㔶扥〱敦愰挶㍡㥣攰㠹㑥㥤㠶搳㜰〳㉦敡〵㥥㙥㉡ち挳晦晥㌰㙡㉡㡣㜳挸戶㙡㉥㌰㙡ぢ戹づ㠳㜱㈰扡㌲ㄹ换㘶㙡愳慤晤搹搴晣㔸戶㍤㤳慤㡢㐲㈰㈹㉥㈳㈵㠶㘸㜳㥡ㄸ㕤ㄵ搳㌷㜴攳愹晥昳㑥ㄵ㜶㌶摢晡㌳搹㤴㠴㜰づ㜱敡摢㔳㑢㔲搹昶㔸㘶㕤㍣㌴㌸摡㐵㙤㘸㔶昷改㐹〴戵搳㠸㙤㤷㌲㑡慤㕢愷㐷㕣捥戱㉢搵㥦づ敢㡢摡昷㠶戰戸㌲㘲㔱㍥㠴㌶戰攸㔲㘳扣挳挰㌶摣昷〱㌷ㄵ〸㠷愸摤㡢慡〶慥挵㜰挳㌳慡戶〹㝦ㄹ〶㔳㡣㜲㈲捣ㄹ㈹㌹㐰㙣㘱昶㕡ㄸ〷愳㈰搵㈸慢㌷昷㜱戰㡦ㅢ㡢攸㐱㌳搷ㄹ㑢づ㌳㤳㑢晢戳㜹㥡搰挰㜰㔳㠳㠸捤搲㈴㠸て㠷搲㤱扤㠱ㄳ㜴っ㠷㐱㠸ち攰扦摤㠳搹愸挶攷摢㘹扤搷戳昳ㅣ捣㍡挴㤹戱㙣搷攰㔹敥㐲㐴挲戶㐳搱〰晢㝡㐲㥤㉢慥㘱慥㔳て㈵㠵㠱慥㙣愴㕤㕦㍦㑣㉣㜴っ㙤扣攲ㄱ搷㠷攷㘷㈵慥慡㐵㕢㝢㌳愹㜸㝦㔶ㅦ㤶㑢挹㈵慥㐵㔷攸昱㄰㜷㥢敡㜲愹㘵攱㉣昶攳㜲昵㜱㈷㘹敦㘱〷㠸㔴㤹っ㈹攱㈸㔰㘴㘶换敦〴慦㥥摤㘴ㄴ搷㑢㔴㡥扦捤㔱搷㝣㥢挷慤㜳㝣㔶㠲摣㠲摣㈸慡㉦㝦㍢㠹㔷搱㜰㙢㤷搳㤸摢㘴摡慡戳捡戸㤳㔳ㅦ㤵ㄹて摢戵㝣扢愷㠱㤷㑤ㅣ慦㕤㘵㘳㘱扣㌱㌱㌸㉣扡㈸ㄹ㡥昷㐷昴㡥㔰慦ㅥ户㘶敢㔴㍡戱㤷昰㈵㙦戳ㄹ㕣ㄵ挱挵摣㘳㕢㠴㔷摡慣捤慢摤㥥攰㝣摡㜵搶つㄵ㜵ㄸ戴慣〱搰晦昲扥㕤㄰㑥晢づ敤㍡换ぢ㔳㤸搲ㅣ㐵㥣换戸戹㤱摢晡㤳慢捤㘶搶㤱敡㐸㘱㕢㌶㘲㉢㕡ㄸ㌳㡡昶㥡㙢㑡㈸ち〴〲扢㝢㕢〱㔶㌸㜶㌲㔶挱扦攷㤸㝦昱㌰㙥㌰㄰㐳㐱攱戶㠸㙤昹㈱㜷㝣㤹〰ㅢ㘱搸挰搹换㔸㉥㜴挷戲㜱扤㌶㉡㝡㐹搷昰㜲㈰㥡搵搱敥㍥㙣㈷戴搷㐷ㄷ愴㘳㤱㜸㉣愹㜳改㠱搷〴昸㤲㕡㠷扥〶ㅢ摡换㔲㤹ㄸ摦㥤慣㡦㜶愷㐳挹捣㍡敥㈴㠵〷昷捤换〹㔹晥攸扣㔸ㄲㄷ㡦搱㈶搳つ搱慥扥搴〶扣㝥搹㥦㐸㉥〸慤换散ㄵ㐴昱㡥㙤ㅣ挶ㄵ㔵愱㉡㉡㔴㑤㐵捤敥摥愳㌰挲㔱㈵㈳㠰ㄵㄴ㈶㔵愷㈳㔵攴㕡㈵㑢收敢〴扣㔶㜹㑥㜹慦㈲扡敥㜱收摥㕤攵晣慢摤〰愷扡ㅢ㈱ㄶ㉤㔸戹㘸攸㈵㤴晦捦㑢愴晥戵愸戸挸㕤㐰㐶㐵㙥挳㥢㡢晤㘱挶㐸㘱ㄹ〷㡥㈶㠴㌳㔷㌸晡㠲㔱戱攱㐰挴㡤㤳收㑣捥挷ㅥ㘵ㅤ慥㝢捣扡搸摡挵㜴㍢捣挸㜰つ㤷〸挵㌳愶づ㙦㑣㈵㐲ㅣ㔹ㅣ㤵㕤㤸戲昵ㅡ㔹㔰㘳㈲搱愲㄰㌲晣捣愲搰〰㡡㐲〳㔲㠴㍢㌱㕦㘲㤱㌴敢㑡慤〹愵㘳搹扥㐴㉣㕣挳っ㕦㌴搹㉢㠶㈴㐶㔰ㄵ挰戴づㄹ㤷㔸㥤ㄶ敥㈳ㅢ㕢㥦㘰扢ㄹてっ㠴㡥散㘳攰㔶挸敤㕢敤收ㅢ〲㔸扥㙡㕣捥㙡㥢㈱晣ㄵ㌸〹捣昸挶愹搸搶㕤㈸㤱㌹愸㉡〱㔵搱㝤摢㙡ㄸ〴㍢㔲愱挸㝣扣㜵㤴㑡㔷㥢㙦㌷搷㠰㐴捥ㅤ改㐶㙥搵户攱㝤ㄶ扣㈷戳ㅥぢ摤㜴つぢ扡戰ぢ㕥挵㑤晥㠰挱ㄶ㔷㡦㍥扦扦戶挶慤慤㐵㔶㕤愳捤晤㑢晢ㅢ摥㡢ㅣ昵扦扤㝣㈶愶㔰㜶㠰㙢〵敤㈶㜶昶㝢㄰㉡㠹㉣晢㔳㘰昰㝤ㅡ摣っ攱㕦〷㘵攱昵攰戹慦㕤〹㘳㝦㠲晢敤㌵〹㜶〷㙢㡡〰㜶攱戱㙦て㐸〲戵㌵㈹攸戵㕢㔰敤㤳㑦㍣㌱ぢ㘹㥦捡㐰㔸敤㜳〰㤸㈷㜸㉢摢晦〱㠴晡㌲ち昹捣ㄹ昸㈱㜲㤵㙢㔷昷昹戴摢㤰戲㍤㜱愸戳㤰攵㔳㠷㜵搸㌸㌳ㄸ㔳㘷㐳挵昵㌲愷愹㔲㙢㉦挵㝢づ搷㕦搸㈹㠳戹㍣㔱㕢ぢ〰㜵㉥㡡戹〸㌰づ捦摢㤴㍡て〶扣㔵昹㕣愷㐶昵㔵㘸㌸㍤㙡㜷愲〵㜵㍥㔲㥣㜶㌸っ搹㑢敤㐷㄰㈵㠷愱扡㄰ㅥㄶ㜴昴㌶愱扢㥢㌵摣挳㝡㉦㜲㌷戸㤷〶昷搱㠰㍢挱攴㔷扢ㅦ戹ㅣ㈵㤷摡摣㙣㤴㙣愱摢〳㜴扢ち〶㐲挹㡦㤹挳㈳攰㑦昰搷㑥挸搵挸ㄶ㈷攴㥢戰㈸㥢㤰㙦挱搸㈰攴愷㍣〷挶㡥㜲㠴㙣㐴愶ㅣ㐲戸摦㕢㠴㤰敦㐰㉤㠴晣㥣㕤扡ㄶ㌹㡢㄰昶㔱㝢㄰愲㌴㈱搷挱捤㠵㤰㠷㔸挳㉦㔸敦昵敥〶晦㐵㠳㕦搲攰〶ㄸ〸㈱て㈳㤷㈳㘴戳捤捤㐶挸㈳㜴㝢㤴㙥户挱㐰〸昹ㄵ㜳㈰攴㌱晣戵ㄳ㜲㍢戲挵〹戹〳ㄶ㘵ㄳ㜲㈷㡣つ㐲㝥捤㜳挸㈳攴㉥攸捡㈱㠴晢捡㐵〸戹〷㙡㈱攴㜱㜶改㕥攴㉣㐲搸㐷敤㐹㠸搲㠴摣て㌷ㄷ㐲戶戲㠶愷㔸敦ㄶ㜷㠳㙤㌴昸㉤つㅥ㠰㠱㄰昲㍢攴㜲㠴㜰摢搹慡搷㐶挸搳㜴㝢㠶㙥て挳㐰〸昹㍤㜳㈰攴㔹晣戵ㄳ昲〸戲挵〹㜹ㄴㄶ㘵ㄳ昲㉢ㄸㅢ㠴㍣挷㜳挸㈳㠴摢搶攵㄰昲ㅢ搸ㄵ㈱攴㜱愸㠵㤰㍦戰㑢㑦㈰㘷ㄱ挲㍥㙡捦㐳㤴㈶㘴㉢摣㉣攰㤰戴愶慣㍦戱㠶ㄷ㔸敦㔳敥〶摢㘹昰㈲つ戶挱㐰〸㜹〹戹ㅣ㈱㑦摢摣㙣㠴扣㑣户㔷攸昶㈷ㄸ〸㈱慦㌲〷㐲㕥挳㕦㍢㈱摣戰㉥㑥挸㜶㔸㤴㑤挸㡢㌰㌶〸㜹㥤攷㤰㐷挸㑢搰㤵㐳挸㉢戰㉢㐲挸慢㔰ぢ㈱㍢搸愵搷㤰戳〸㘱ㅦ戵㌷㈱㑡ㄳ昲〶摣㕣〸昹ぢ㙢㜸㡢昵敥㜰㌷㜸㥢〶㝦愵〱㜷攰㠵㤰扦㈱㤷㈳攴㉤㥢㥢㡤㤰㜷攸戶㤳㙥晦㠴㠱㄰昲㉥㜳㈰攴敦昸㙢㈷攴㍤㘴㡢ㄳ挲㍤昲戲〹昹〰挶〶㈱晦攰㌹攴ㄱ昲㈱㜴攵㄰挲扤昶㈲㠴㜰ㄷ㕥〸㜹㡦㕤晡ㄸ㌹㡢㄰昶㔱晢〰愲㌴㈱㥦挲捤㠵㤰て㔹挳晦戰摥㕤敥〶晦㑢㠳㡦㘸挰㌵㡥㄰昲㌱ㄲ㌹㐲㉡㤱戱敡戵ㄱ昲〹㡡戵㑦㈱㔴ㅤ㠴㄰挲㐰㈳〹昱ㄹ敢㘰㉢慥慢敡㔱㕥㥣㤰㘱戰㈸㥢㤰〶ㄸㅢ㠴㈸㌴㤴㑦㐸㈳㜴攵㄰戲㉦散㡡㄰㌲ㅣ㙡㈱愴ㄲ㉤愸ㄱ挸㔹㠴戰㡦ㅡ挹㈸㑤挸㝥㌰戵㠰〳昴搶㤴ㄵ攰㐹㔷戳摥晤摤つ㙡㘸挰㑦㈸搵〱㌰㄰㐲㠲挸攵〸ㄹ㘵㜳戳ㄱ㔲㑢户㍡扡㡤㠶㠱㄰㔲㉦㌹扣搶㠰扦昶㉢㘴っっ㡡ㄳ㌲ㄶㄶ㘵ㄳ㌲づ挶〶㈱つ㍣㠷扣㉢攴〸攸捡㈱㠴敦〴ㄴ㈱㘴㈲搴㐲挸㍥散搲㈴攴㉣㐲搸㐷㙤㌸㐴㘹㐲㥡攱收㐲挸〸搶昰㌹搶㍢挵摤㘰㍦ㅡ散㑦㠳ㄶㄸ〸㈱〷㈰㤷㈳㘴扡捤捤㐶挸㠱㜴ㅢ㐹户攳㘰㈰㠴㡣㐲捥㜸ㄲ㌹〸㈹㍢㈵戳㘰㔲㥣㤲搹戰㈸㥢㤲㌹㌰㌶㈸㌹㤸㘷㤱㐷挹㕣攸捡愱㠴㙦ㅡㄴ愱愴つ㙡愱攴昳散㘲㍢㜲ㄶ㈵散愵㜶㈸㐴㘹㑡收挳捤㠵㤲挳㔸挳攱慣㜷㠱扢挱㘸ㅡ㡣愱挱㐲ㄸ〸㈵㘳㤱换㔱戲搸收㘶愳㘴ㅣ摤㡥愰㕢㌷っ㠴㤲昱挸ㄹ㤴㑣㐰捡㑥挹㑡㤸ㄴ愷㘴ㄵ㉣捡愶㘴㌵㡣つ㑡㈶昲㉣昲㈸㌹ㄱ扡㜲㈸攱摢ぢ㐵㈸㌹ㄹ㙡愱㘴㌲扢㜸ち㜲ㄶ㈵散愵㌶〵愲㌴㈵愷挲捤㠵㤲ㄶ搶㌰㤵昵昶戸ㅢ㑣愳挱㜴ㅡ㥣〶〳愱攴㐸攴㜲㤴㠴㙤㙥㌶㑡㘶搰敤㈸扡挵㘱㈰㤴ㅣ㡤㥣㐱挹㑣愴散㤴㈴㘰㔲㥣㤲㈴㉣捡愶㈴〵㘳㠳㤲㘳㜸ㄶ㜹㤴慣㠳慥ㅣ㑡搲戰㉢㐲㐹〶㙡愱攴㔸㜶㌱㡢㥣㐵〹㝢愹捤㠲㈸㑤挹㝡戸戹㔰㌲㥢㌵捣㘱扤ㅢ摣つ收搲愰㤵〶〳㌰㄰㑡收㈱㤷愳攴㑣㥢㥢㡤㤲㌶扡戵搳敤㝣ㄸ〸㈵挷㈳㘷㔰㌲ㅦ㈹㍢㈵ㄷ挰愴㌸㈵ㄷ挲愲㙣㑡㉥㠲戱㐱挹〲㥥㐵ㅥ㈵ㄷ㐳㔷づ㈵㝣搳愲〸㈵㤷㐲㉤㤴㉣㘲ㄷ㉦㐳捥愲㠴扤搴ㄶ㐳㤴愶攴㜲戸戹㔰搲挱ㅡ㍡㔹敦搷摣つ㤶搰㘰㈹つ慥㠰㠱㔰戲っ戹ㅣ㈵摦戰戹搹㈸㔹㑥户ㄵ㄰晥㑤㌰㈸㙦㥢扥ㅡ㐴㌵摡摥㥤㘰㡣㌹戳㑦㜴㌹扥昶挶㈷昸㑢戱㡤㤷㘵搱摥㄰挴慤㌲㌶㔳ぢ扦攲捣晦㌲ㅦ㙦㈰㐸ㄷ㑥晥攲扥攸㔹㈱〶昹戶㘶摦㌲戴摣扤捤搶愰晦昶㑦㜶敤㉡慦ㄵ㔰攲慢㕥捦㉦㠷㝡㝡㝣㌵㙣戳ㄲ晦ㅢ摢㑥搷㐱㔹㘴㉦愳㘰摦㤱㌵つㅦち挸㌲挸㍥㌱捥ㅦ摣㜰㡢攴收㙦㘹㜴㜳㔰摤㠰ち㔸㠷戶㤲㌹昳㐴晣㥢㤱㉡ㄹて㤷搱ㄶ㘵㘴扣㉢㍢ㄸ挷㙥〴㤳晣㈶挶㐸㌱㈸㡢搷㉡㔰㠶搳㑢愵慢昰收㐸攱〷㜰㌹摦㕥㌴㕣㍢愲攰㠳㐳㜱愳㠶㠱㜷晦て〰慥愷㍦㑦㝣〸㑦晡昰〸慣㐶㥦㐶㜴挶挲改㔴㈶ㄵ捤㌶㜵㘱㐳慤㠹㥦愰㘲扥㘸㘹昵摦㠲ㅡ㕤摢㘴挷慡㤲晣㥤〹愱㈸戸㌶㤹摡㤰㤴戳昱㘷昸㈵㉥㕢搳慡慢搹㑣㄰晦换㜱㌸挰㙢扣㠹ㅡㅣ㡤摦戳ㄲ摦户ㄲ㌷㥢㠹㠶㕢㤰愰㔷㐰㉣㍦㐳搱挸㐰㌶㠷㔱攰㈴㜴㝢㥦戶㜹㍤昹㍦愱ㄱ昸〲㡡敢㔰㉣㈱晦ㄵ昸㘸㌵㜰㌲㑡㠶愱挴戶㍦搶挸㐸㌸㙢搱㑥㠱㔲㝥㡥㐲㝥㤸㐲摤㠶㜲㑥㈵㐱㜵㈳㜰攳㔰捦つ㔹㜵㍢捡㌹㙣戵搳攰愳敥㐴ち晦㝣㕡㠸㌹㈴㘸愸ㄸ㘸收戰㔲搷挱㤵㘴愲㄰㙦㘰挲㠴㘴愸㙢㔱㐲㐲昲〱扤㥢敥㌸ㅡ敦戱ㄲ昷㕡㠹晢捣㐴挳晤㐸散ㄹ㐰户愰㘶㠱㠲㠰㙡㠴㑦㈳㘲㡤て㔸攵㝤㉣ㅡ㠵昳搳㐶㐲㈸挶愶つ㠸慥㐶㑦昲㈱晡㈹㜴〲㔱ㅣ㍥敡攷挸攱ㅦ㕥愷㘴づ〹㠱攸㐱愴〴愲㉢攱敥㠴攸ち㔷㠸ㅥ愲㍢㡥㐶㠶㝤㈵挱ㄸ慦㈴㝥㘹㈶ㅡㅥ㐶㘲捦㐰昴〸㙡㜶㠳攸㔱慢㍣㑢㠸づ挵改㘸㑤㄰敡㌱㤴ㅢ㄰㕤攲㠰㠸〱㕥㠱㘸㠰愰㍣㡥ㅣ晥攱㡢㉤㍢㐴㑦愲㐸㈰扡搰ㄵ愲昳㕤㈱摡捡㝡㜰㌴㍥㘵㈵戶㔹〹㐶㕥㜹㌴晣づ㠹㍤〳搱搳愸搹つ愲㘷慣昲㜳〹搱㌸㥣㠴㌶ㄶ㐲㍤㡢㜲〳愲戳ㅣ㄰㍤〷㥤㐰㜴㍥㐱㤱昰㈸晤㉥戰㐳昴㍣㙣〴愲㉦戹㐲㌴攰ちㄱ挳愲㍣ㅡ㕦戰ㄲ摢慤挴㡢㘶愲攱㈵㈴昶っ㐴っ㥥扡㐱挴㜸慡㤴㕦㐶㠸㈶攳晣戴㐹㄰敡㌵㤴ㅢ㄰㥤攱㠰攸㜵攸〴愲㉢〸捡づ攴昰捦愷㝤摤づㄱ〳㤶〲㔱搲ㄵ愲戸㉢㐴っ㔴昲㘸㝣换㑡扣㙤㈵晥㙡㈶ㅡ晥㠶挴㥥㠱攸ㅤ搴散〶搱㑥慢㝣㈳㈱㥡㡥昳搳愶㐱愸扦愳摣㠰㐸㜷㐰昴て攸〴愲㙢〹㡡㠴㄰改户挹づ搱〷戰ㄱ㠸㝡㕤㈱㍡捤ㄵ愲て攱挴愳㤱攱㐳㐹㌰㔶㈸㠹㡦捣㐴〳㐳㠵㝢〶愲㑦㔰戳ㅢ㐴㥦㕡攵㌷ㄱ㈲㝥愸愴捤㠴㔰㍥㘴つ㠸㑥㜲㐰挴㐰愱㐰㜴ぢ㐱㤱愰ㅥ晤㙥㘵づ〹㌶愳戸收ㄷ㠸㔶戹㐲搴敤ちㄱ㠳㜹㍣ㅡㄹ搰㤳〴愳㜷㤲搰捣㐴〳㠳㜷㝢〶㈲㠶晣摣㈰㘲ㄴ㔰捡敦㐲㐲㝥挲㐷㥢㡤㜳㔲㡣〳ㅡ㄰㜵㍡㈰㘲攸㑥㈰扡ㄷ〹㈵㘱㌶戸㘸昷㌱㠷㠴㐰挴㌰㥢㐰㜴㠲㉢㐴ぢ㕤㈱ㅡ〱㈷ㅥ㡤っ戱㐹㠲昱㌴㐹散㙦㈶ㅡㄸ㑥摢㌳㄰ㅤ㠸㥡摤㈰㘲㕣㑥捡㝦㠶㠴晣〲㤱搶㡥㜳㔲㡣换ㄹ㄰戵㍡㈰㘲㈸㑤㈰㝡〸〹㈵㘱㉦戸㘸扦㘰づ〹㠱攸㔰㘴〴愲搹慥㄰ㅤ攷ちㄱ挳㕤㍣ㅡㄹ昲㤲挴㘸㉢㌱挶㑣㌴㌰扣戵㘷㈰㘲㔰捣つ㈲挶挹愴晣㌱㈴攴〷㤴戴ㄳ㜰㜲㡡㜱㌲〳愲ㄹづ㠸ㄸ摡ㄲ㠸㥥㐰㐲㐹ㄸち㉥摡㤳捣㈱㈱㄰㌱っ㈵㄰㑤㜳㠵愸挵ㄵ㈲㠶㥦㜸㌴㌲〴㈵〹挶㥢㈴挱㤸ㄳ㡦㠶㈳㤱搸㌳㄰㌱㐸攵〶ㄱ攳㔶㔲晥っㄲ昲敢㑦摡㌲㥣㠹㘲摣捡㠰㘸扣〳愲㘳愰ㄳ㠸晥ㅢ〹㈵㘱㈱戸㘸㝦㘰づ〹㠱㠸㘱㈱㠱㘸慣㉢㐴愳㕤㈱㘲㌸㠸㐷㈳㐳㐲㤲㤸㙢㈵㕡捤㐴〳挳㍦㝢〶㈲〶㡤摣㈰㙡户捡㕦㐲㐲㝥扣㑡攳㈷㐸㡡㜱㈴〳愲㠳ㅤ㄰㌱昴㈳㄰扤㠶㠴㤲㌰つ㕣戴搷㤹㐳㐲㈰㘲㤸㐶㈰ㅡ改ち搱〱慥㄰㜵挰㠹㐷㈳㐳㌴㤲㘰㍣㐶ㄲ㡣挹昰㘸㘰㌸㘶捦㐰挴㈰㡥ㅢ㐴㡣敢㐸昹摢㐸挸㙦㙦㘹愷攰㑣㔴㌷戲散慦昶づㄲ搶搱挸㈷㝢㍥搲㙡㍢㤱愸慦㔴㝣戰㍢㠰昹つㄴ〳ㄴ㠳㄰慡づ〸戸晥愸㐴慤愹㜰晣愸挴㘹愸挹搹㕥挸㙡敦〳愳扤㍥㡦昶晣㕥敤㔵㤹ち挷慦㌰挴㕤摢攳㌳㤴昴敦㔳愳扤慣㐷㝢㥦㝥散搱扦㑦㑣㠵攳挷っ〶㕣摢攳〳㠹戴挷摦挲〴㥥攷㝡戴昷㠱㔷㝢敦㥢ち挷㙦〲㥣敦摡ㅥ㔷昷搲㕥㥤搱摥㘵ㅥ敤敤昴㙡敦ㅤ㔳攱昸㤰晥ち搷昶戸㔴㤶昶㠶ㅢ敤㙤昴㘸敦㑤慦昶晥㙣㉡ㅣ㕦㥦换㝡㤳攳㉤㙦㝣㜲摤㈹敤㡤㌴摡扢挹愳扤㔷扣摡㝢搹㔴㌸㍥搸扥〵㌵㌹挷㈷ㄷ㜱搲摥愱㐶㝢㜷㜹戴昷扣㔷㝢㝦㌴ㄵ㡥㙦㥣敦㜵㙤㡦㉢㈲㘹敦〸愳㍤㉥㈰摣慥扦㘷扣摡㝢摡㔴㌸㍥ぢ㝥挸戵㍤㉥㉦愴扤㈹㐶㝢扣ㅢ扢戵昷愴㔷㝢㑦㤸ち挷㜷戴㑦戸戶挷㝢戵戴㜷㤴搱ㅥ㙦㙤㙥敤㍤敡搵摥㈳愶挲昱改愹摣昰ㅣ攳㠵㌷㍥㘹㙦㤶搱ㅥ敦ㄳ㙥敤㍤攸搵摥㝦㥡ち挷搷㥡㜲昷㜰戴挷扢㠸戴搷㙥戴挷㐹搷慤扤〷扣摡摢㘲㉡ち㍦㜰㙣戴㉥〳㍦㘷收〹摥㥦搲ㄹ㙦㘲て晤愶ㅦ扦慦昲㐷ㄹ㙡慤㡤ㅡ㍦愹挷㌸户㝣挳ㄶ㤷㌸㘵ㅤ㕥捡㑥攳㔷昵㍡昰㠹〱㕥挵挶㡦搵㥡戱㐰㝣㝡挰㔷㘶慤㤷㠱㌵挹搱㌹㄰㕤㥡挶摢挱搵搱㐵ㄹ㝣挸㄰愹挱㙦㔸㘵昱㉢㠷挹扤㈱搸㡦挸㜱ㄵ〰挲㘱扣慢敤ㅡ戴敤㠵扡昰攵㘱摢搷ㅡ㐳㜸㔸㕦敢㔴昰㕤敥摤ぢ昵换㉥㔳㠵扡て扣㑡捣昲慤㘹〷㑡㌸ㄳ敦㠷晢戴づ㡣㤲愰㤲昳㔵〸改㡢慤〸㥦攲つ㤱㔴㥢晥㜷扢晡㉦昵昶攷つ捥收㝦愷慢晦ち㙦㝦摥戰㙣晥户戹晡慦昴昶攷つ挸收㝦慢慢晦㠹摥晥扣愱搸晣扦敦敡㝦戲户㍦㙦㄰㌶晦捤慥晥愷㝡晢㜳挲户昹摦攰敡ㅦ昲昶攷〴㙥昳摦攴敡ㅦ昱昶攷㠴㙣昳扦挶搵㝦㡤户㍦㈷㔸㥢晦户㕣晤㑦昷昶攷㠴㘹昳扦捡搵㍦攱敤捦〹搰收晦㜵㔷晦㜵㥥晥㝥㕥ㅡ㘵㕦愳扣㜱敦收捥㔶ㅡ敤㈸㕥㐷㙣㔰换㌰挷慢㐲㜲晣㈹㝡挵㌱㉥戹㝥收㌸㘲㈵户㥥㌹㡥㍦挹㙤㘰㡥愳㐹㜲〳捣㜱㙣㐸㙥㤰㌹㌲㉤戹㉦㌱㐷摥㈴㜷㈶㜳㘴㐱㜲㕦㘶㡥㤸㑡敥㉣收㠸㤰攴捥㘶㑥㑥ㄶ㝤捤㕢ㄴ㈹㌹㘹㐷愹㥣扣愳㔴㍡攱㈸㤵捥㌸㑡愵㔳㡥㔲改㥣愳㔴㍡改㈸㤵捥㍡㑡愵搳㡥㔲改扣愳㔴㐰㜰㤴ちㄸ㠵愵戵晦〷㌴㤶挱㤴
A28: Decisioneering:7.0.0.0 | B28: Decisioneering:7.0.0.0 | C28: Decisioneering:7.0.0.0 | D28: Decisioneering:7.0.0.0 | E28: Decisioneering:7.0.0.0 | F28: Decisioneering:7.0.0.0 | G28: Decisioneering:7.0.0.0 | H28: Decisioneering:7.0.0.0
B29: CB_Block_7.0.0.0:1 | C29: CB_Block_0 | D29: CB_Block_0 | E29: CB_Block_7.0.0.0:1 | F29: CB_Block_0 | G29: CB_Block_0 | H29: CB_Block_0
C30: 㜸〱敤㕣摢㙦ㅣ㔷ㄹ摦㔹敦慥㜷搶㜶㥣挶㑥摡昴㤲扡㑤㕢㕡ㅣ㙤㥤㕢㉦慡㐲昰愵㑥㑣攳摡捤㍡愹㔰㔵㤶昱敥ㄹ㝢㥡戹戸㌳戳㑥摣ち㕡愴㍥㔴㕣ㅥ㄰攲愱ㄵ〲㈱愱ち㈴㠴㔴ㅥ㄰攵昲ㅦ㔰挴ㄳ攲〵愹扣昰〲㐲㤱昸〳捡敦㜷捥捣敥散慥㜷散㙣㕢㜰㤰㡦攳攳㌳攷㝣攷捣㌹攷扢㥥敦㍢㤳㡣㤶挹㘴㍥㐶攲㕦愶ㅣぢ昷㔶戶㠲㔰㌸攵㔹捦戶㐵㉤戴㍣㌷㈸㑦晢扥戱㜵挹ち挲〱〰ㄴ慡ㄶ摡㠳㝣㌵戰㕥ㄳ挵敡愶昰〳〰攵㌳㤹㘲㔱捦愲㥤㠳昰昷㘰晣愰戳搷㜰づ㔹㘵㜶㘶㘹昵ㄵ㡣㕡〹㍤㕦㥣㤸戸慡晡㥥㝢戲㝣扡㝣㜲㙡敡㠹昲搴㠹㠹搹㠶ㅤ㌶㝣㜱捥ㄵ㡤搰㌷散ㄳㄳ换㡤㔵摢慡㍤㈷戶㔶扣㙢挲㍤㈷㔶愷㑥慦ㅡ㘷㥥㍡㜹收散㔹昳改愷㥦ㅡ挶㥢㌳㡢戳㌳换扥㌰㠳㑦㘷挸㍣㈷㝣㘶㑥搴㉣慥㑣〸摦㜲搷捡戳㌳昸㤷㤸㍤㥥㥥㉣㔷搶㠵〸昹㘶攱ぢ户㈶〲ㅤㅤ㠷㥣改㈰㘸㌸ㅢ摣㍡摤㤹挷㐲㙢㐶㄰收㥤㔹㘱摢扡ㄳ㡦㕡㜴㤶戰㜳戶戱㌵散㔴㠴ㅢ㔸愱戵㘹㠵㕢〵㘷〵〳搵㐷㥣㉢㠱戸㙣戸㙢攲㜹挳ㄱ㜹攷㐲挳慡攷㔴捡っ㝣㉥ㅥ㈲㌹㌱戹晡昲㜴攰捣慥ㅢ扥㥣㔱挰㝤㐹㠱㥤昷㙢敤戰挷㝢㡦换愹换㌷㜰捣㠷㝢挳愱攵慡攱㌷㈱㈷㝢㐳㐶㡢㙦㥦挱攳扤攱ㄳ㝢搴摥攷戱摥㝤攴㔶戶㐳㙢㐳ㄱ㜵换ㅤ挵㘲昴〲戳㐱㘶㐵㘶㐴愰㕥㘲㌶挴㙣ㄸ㤹㤶晢㌷㜸㈴搹㤱㑤搹慡㤱慤慥㘶慢戵㙣戵㥥慤㡡㙣搵捣㔶搷戲搵昵㙣搵捡㔶㕦挹㔶慦〱㈶㑥挵挱挱㙣㤴㝥晥摡㍢慦慥㔶挷ㄶ摦㍡晥㔱㈳昷㤷户扦㍦㝣〰㐰㉦㐴㤳㥡昳㡤敢㈰戵ㄶㄱ㥦㉡㑦昱㘷㘷愶〰㑦㤸㘷捤㈷捤㤳㈷敢㘷愷㡣搳㐶㥥换㑡㐱㝥ㅢ愱ㅣ〴散戰昹愲攵搶扤敢ㄲ㜷昷捥ㄸ㠱㘸㙤摣㘴搴㌶攳㌵摣㝡㜰捦昶㡤㤵搰〸挵摤㥤㙤慤㐱扡扡㔵挰㔶㈲㤰敦㍢搶搹敤慡㘱㌷挴昴つ㑢㌵摦搷搱散㉣晢摥㙡敦搶㜹㕦扣摡㙣敤㥡搱㌴㐴摡愶ㅣ扢㙢㤵慡㐹捤㙢㘲㜶摤ぢ㠴㉢愷㌷改㉣㕢戵㙢挲慦〸ち㐴㔱㤷㑢㍤捣愶㠸敢㈷㤷㕣㉣ㄴ摣㕡㝦㌰㔹㙢㍥㝢㈳〴㌳㡢㍡收扢㈱晣㜰㙢挵㔸戵挵㤱㌶㄰昵㑥㌴ㅣ㙤慢㥥昷㙡㡤㘰搶㜳㐳摦戳摢㕢愶敢㥢〶㈴㑤㝤搱慢㡢㕣㉥㈳㠵〲挴敤挰㠰愶㘵㍥摦㥢ㄷ㈴㈲ㄲ㈸㈶㈳摦搵㑥㜶攵换㔸ㅤ㔶㘱ぢ搲㘴昶愱ㅤ〶攳㝣愵㡣㐹攱挰挴㥡愸㍤昸搲㐷㜷ㄸ戶㠹戹捦ㄶ㌸㥢ㅤ㡢㔶晦散愶㜰挳㡢㠶㕢户㠵㥦慡晢㌴捥㐸ㅦ㐵㤶扦〹㠱搰㜳昷愸攸戴ㅢ摡㔶晥扡㔵て搷ぢ敢挲㕡㕢て㔱〷晤㔸㉣㜲㙢扢㤲㝥〷慡昴㐳捣挶㤰㤵㑡㤹挲㌸㠱ち㈵愴㑣㥥搲㈹㠵㤷摢〴㌹晢戵昱昲戰㌹㙦搹愱㔰㐲㜹搴〴㐶㤴㔶㤳攸ㅢ㈱㠹晡㐶㑤㈹㡣㜱㜳ㄶ㔴㙡㔸㙥戸搵攲摢㉥㉥㔱㐴戴㉦ぢ昶㥣㉣愰㈸㘸㤷〷㈹扣〶愲改㤰〶改挰〹㈲㈲ㅢ愴㘸㜶㡣摣㑥㘴㠴㑦㤱ㄱ㠰㑦ㄲ㈱愱愷㝡换〸ㄲ㝢㌷㤱戲㔳㑦㝥摣㤷㘶摢㔹昲㑡㥡ㅤ挶挶改㐷㤸摤挹散㉥㘶㐷㤱㘹㝦㠷㠴愳㤴㐳戹㍤改昷攰㔹扦㤷搹㝤挸㈰㥦㜴捡㥣㐸㔴搱㠶摡㡤ㅤ㐹戸ㄱ搸挹搲㈸㔶愲㠸㤶㜱搳捥ㅣ㜱㈴愲㈳慢㜳㙦攸摡㥣搴戱㡦昴愶捤攴㜲㐸㤱㈹愰挹戵敥〰㥡摣〸㠲昶愹户敥㐷㔷㝤㠲搹〳挸㤴㘲愱戱扢㍢㙢㥥收攴㙤㘱ㄲ㈹㐳愸㑦攵ㅥㄱ㌱捤晦ㄴ〱搷㜵㜴搹户㥦㘹ち㑥㥡户扤晤㝣愲㌷㙦㐷㐸敦搰㤹晢㍡㠷㥥愲㕢戴愰ㅦ〴㝢㘹㝦敤愹㕦ㅥ㐲戳晥㌰戳㐷㤰㜵攸ㄷ㥥扣㙦搵㑢㈰㑤㘲㈷㠱戹㐳昴戸㐸ぢ㜷㘵㙢㐳㐸敤㌳㙣慥ㄸ晥㥡〸攱扤㔸㤸㠳ㅤ散昹扥戰㜱愰慤换ち㥥㕤敥㙣慦っ收㝤捦㘱晤扥㝤ㅣ摣ㄶ㡡㈱㤷换づ㘴㍡散攳ㄴ㍢㌳攱㙦㑡㔰づ昵敦改摥㐲㈲搱愹㥤扣搸㉦晤㙣戹㉦㐹晡㤰㈴㡦㘲㕢昵挷㤰㐱㑡㘸㝦敥㈹㔱㈶〹㜶㐲㠲戵㕢慢昴敥愵㥣㑣㍡晣㠷㕤㜲㘴㐸㌹㙢㘷攰㍢〸㐶㥣㡡攵㌴㠵挵㤰戳㉣晣ㅡ晣ち㤶㉤㑡捡㈵㑢㔱戳㉦㉢㙥ㄳ㔹㌱㌰搰㜵㤶㑥昱慤㐹㍡改㤰ㄲ愹摣㥥摡㤸㜲づ㙦ㄱㄵ㕤㤰ㄴ㉡㈹㙥愱愶〴㈲攵ㄱ㜶㕦挴昴㈱㘲捡搸㌸晤㜱㘶㔳捣㑥㈲换晦ㄱ㤲㘶户ㅢ捦㐰搸攰㈶摤搹搵㙡愶㐸㌴㐸昷攰㠷㍤㠵搵ㄹ扥收㉣戳㈷㤰㜵㤸㍦㜴㍥愶㄰愲㐴㜹㠲㄰㘹㉤改收㔵㑢㕣㈷つㅣ㌰ㄱ㔴㥡㙤〴愱攷㌰慡㌴㘲捥㜹捦㝢攱㥣ㄵ㙣㈰ち㌵㘶㐶㠵ㄷ搷㠵ぢ敡昲㘱晢㜴搴㜹ㅢㅢ愲慥㥢ㄵ慦〱搱戶㌰户ㄷづ攵㔸ㅦ㙣㐹㜹㉥捦㙡㐸晤㥤㡤㌱㠴㈶㑦挴昰戵搲ㄳ扢㉢捦㌷て㝤愳慤ㅤ㕤戱㐲㕢っ㤹㡡改㔸㉥㥡搸㐵㐴つ敡㠳收捡扡㉦挴摣㠸㜹挱户敡戶攵ち㈲〳㌶㈶〳㜵㤷挴ㅡ㈲〴换ㅥ攳㝦㥥㍢㘲慥昸㠶ㅢ㙣ㄸっ㈶㙥ㅤ㙡㝢㤲㈱㤱扣㌹㘳戹〱㕥㈳戱挸昲愸㔹㔹昷慥㈳㔶摢㜰摣ぢ挶㐶戰㈷戰㐲愲㔷㐹愲㐶换㙡搹慣㔶捣ㄶ晢挵てて攴㤹捣㈹晣收㤸㐹㕣㘵昲昴㤷愷㘸㙦摡昵㔱㝣㠶㜶㍡攷㌴㡣挸㔱戳㜲㈰㔵ち㤳㔳昵愷搸攷㘹㘴ぢㄷ慥㉣戴愲㜲㥦㈴㕡㥤愷㠳㍦㐵挴㑢慡㘸挶㐰攸㥥㍢愰㈸㠵㜵㈴ㅣ㌰㈰㄰捥愷㑥敡㉢㤹ㄲ㠶挴㜷愰㔵㥣㐷㄰㘹搸扣㘴慣ちㅢ愱㘸挷〸て愸〷㕡戱㡥㘱〷㔱摢慣攷㌸〶㈹㡢㔴㔹愹ㄹ㈴攰改㐶攸㉤㕡慥㙥㈲㤳攴ㄷ㔵ㄹ㌷㔰㘵摣㤰㔵挳收㘵㐶〵㘵㤹㘳㜹㙢㠶㙦㠵敢㡥㔵㉢昲㠱㤱扢㍤㐱㤲攰㜱ち摥㌸挵㈲㘳愲挳㤸扦〲㡢㉤㈸〳摢㘵㠸㔱㙥ㅤ戱て挲捤㙡〵晣㘸㝤晡㤵㈰㕦愴㤳㔴㝦〶愳攵攵戵〸㐸ㅣ㤹㙥挶㤷㉦㙥扥㠱ㅡ攵㤶㈳搶㔳㐸〴づ挱㠴㡣愷㜷扢㘰㕥㜱慤㄰搸㈳挶收慤㜰㉥〰捡㤱愱㈸㑦户㜷㑢慣㈶㍡㑤㌶㤵挲晤摤㑤㙤㕡攲㔸㜷㝢㔲㙤㍣戴㑤戳㔲㈸〹㍤戲ㄳ㤰㔴㉣摢捣㜱㉦㘹ㅡ㑤敡敤㔸搹㘸㘹㕥搳搶扥㔳㠸㝣〲扤㈴㘹㈶愳㥦㤳㠴㠲ㄸ㉦愹〳㉡㡡敥晡㜴昲㐸〴㙢㘸〲㤴愸愶㔴摤㐸ㄴつ㕣挰㡤㤳扡㈸㐵㑦攰敦〳㔱㜱愹ㄱ戶戵ㄸ㌷挶愲㤶㘹摢㕥㜲㘱㈴搴っ扦扥㐷㔸ㅡ㙢㔳ち㐶㜲㘷扦捡㕦㙤㙦㠲ㄱ㈳㌶㘴㐴㈴挵つっ㌶〴㜳㈵㠲愹㌴捥㐶戸搵捤敡㈲㥦ㄶ㠵攱㑡っ㔴挲晡㥣搸㤴㔶㔸换㤰ㅦ㤳ㅤ㥡㠷㐵㈹㐷㜵㜳㝡㌵㠰㐶て㈹挷愳㤲㘴㜰摤扣㑣慦ㄴ敥㉦㐰散㐶愵攵㕡㠸愸㙥㜳〰ㅥっ昶づ㜶戰㈳㉡㙡㐲攳㡣ㄲ戴㤰㐲戸敤㡢㈰敦昴㠹㔱〸㔲㔳愶㝦㥤搷摥㝤㠷改㘷攷㌳㜱㈱㘲㈲㐶扡㔲㡣〷㈰㌷ㄹ㤴㈴ㄷ㡤挵戱㜲㈵搹愴搰ㅡ㡥敢㘸㘱㡣搰攲昳㐳㕣攰㘱ㄸ㙢㤴㙣㘳攳㠲㕢㘸㐱㥢摡㕢〷捣〵户㘶㌷敡㐲慡攲㔸㔶㑢㡤扣㈷昰㈵敦晥㈹㙥㑡搹㤷㘸㔳ㄶ㜰㤲攲㤲㠹愴晥捤㙥晤ぢ攸㉥㠵ㅣ挶㔰戲㡤戱挷ㄴ慦㥣㡣㠵㜵㕤㔱愰㜹㜸愸㜵㜷㐱摥㥢㠳㐸敢慡愲㉣扢㠴慢㜸捤〰戲攴戶〴搸㈵敦㤲㐷㤳㍤㔱㜵搱㔲㔵㝢〲㐷㔸愷ㄲ㜸㠵〲㡣㤱㍥戹㠳㠳㘴㙥㐶㠱摤㥢㙦挸挷捣捤昳㤱昱愱㌱扣换㐳㔰〶扢ち㐶愲扤㥤㙤ㄹ摤ㅡ〳扦㌴扣昵㉦㈲搳ㄸ〱愶㐱ぢ㐸㘵攰捣愰扣戳㠱挳㔸㘴㑡㜰㌴ㄹ㐷㘵㠸㜲っ晥㝡㈰つ摣挴㜳昴㡡〷㈵ㄴ㡥换㍢㘱昱戵挴㐹〷㈷㈰捦㍦搲㔱戹㙣㠴戸昹攲ㅥ敤愸㥥慥搷㘹敥挲㍤户㈷戰㡡㕢ㅢ捡ㅣㅤ敦戸㡦㈵搷㐴晢敥㜸㐷㐳㜴㑦昰搴㕣昹愲ㄱ搶搶㉢攱㤶扡戳搵㉦㐹攴㝦て㜷挴戶㙦愷捤㥣㜳㜹〷㜵㤳㝢㕦扡收㝡搷㕤㌹慦㝣挰ぢ㝦戴㘲昵挱㐱㑥戲㤴昹ㄸ㍦㌲㘵㌳昹摦㘱挴摤㑣㥢〳戴晣㈳ㅣ㐷㈶㈵つ㈶㔰㑥愱ㄳ搸敥捤ぢ〳愴㤳昱づ㍡㤱㠲㘰㥦㔰摣戵㑦㡤㔰戴摦〲慤㈴ㄶ㜵㈲挷㥥扦〷搶搷㝥㠳ㅡ㈲ㅣ捦㤱ㄸ挹㍦㠰㔲ち敡愴㈰㡦㙥㜷昰㉥挸晦て㤶㘲㙥摥㤶㥤晥ぢ捣慣㝤搰㠹愲㘳㐴搱慦扢㔱挴㌸散㉤㐵扣㌹晢晤愳收㘷㝥慢昷㝦㜸搴晣ㄲ㌰捣㈴慤㌱挴搴ㄸ㡢㙦ㅡ〳搹㉥㘳攰㘱㌴㑢㘳攰㌹昶㘱戸㕥ㄹ〳㤱户㘳ㄱㄵ㍢ㅢ〳っ攲愵㤸㝣㠹㤸㙡挲㠱挱戳搶ㄱ㠷㥥戰㡢戸㕤㉢〲〴敥愱㥥㠲㔹昸㥥敥散慥㕥㌶㝣挳㌹㉡敢㉦昸〲㙡换㕦挱㜵㙤搹㠵㍤敥摥戶㐵㜶摡挶㉢ㄱ扢搳昷㍤㈷扢扢愴づ㑣愹愴晣昴㕡㔱㉢㝣〲㥦㠸挶ㄳ㐲收昵昱㕦㕣昸摢㙢㙦㥤攷戵戴㠸㔶昳㡣〳昷ㄳ㥢愷攵㠰攸㙤攲㐶挸㘱㝥㝤戳㠸捦㤰慣つ㕢捣ㄸ扥戴㜷〲摤㠹㡢㡡昰ㄲ㠴愹㠸㙦㉦ㄸ㤳戸攰愰㡣挹㜲㠷㘳㔳㝥扤㈴㥤㠱攵挴挴愵昷㉥㡥て㙡㍤㔵㔶㥦㜶㘵晥㤷㔰㍡户㌸㤱㜶㝢㤰攷㑢㈶㑤㝢扦㔳慢㥤愵㔶㤳㘶愲㌶〹㠸㔸㑡㈱搰㐰ち㐹ㅥ㔹ㄸ昹㤷㔲㙡ㄹ㠵㝣ㄹ㔹㑡〸慤㌳㤶换㤳晦扥㄰㄰捤摢㝤㝤㝥愹㠲㕤〴ㄶ㘳慦㝢扦㘷㔷㕡㥤戱㙡㘲㑣㔶㥥㍥㕥㐰㐱ㅥ㔳㔸挱㈰慤慣扤㡣㐲㥣昲㈷㔱摡戵攳㠹㉦ㄹ㜱㔴㠴㑤㌱㜶摥愱㔷慤攴㍣敢㌶㜰挵〳㝡愶㈰ㄵ㠶㝢㠸搵㌸㝡捡㘰㥣〲㉤愹㉡收愳慡搸散㌴ㄴ㌵㐱㘷戹㐷㜱晥㐴㤴㡦㥦〳戱㝤戲㌵昴攱捥ㄶ敡㌸㜷㄰ぢ攴㉦散慦㘳㈹㡣㡤户㤲㘳㈰㘱㜷〵㔵㔴㜷挰㉢攸㈲敤㜹㑤㙦ㄵ昹㉥㑤㘳㌰㍡收慣㠱㙥晤捦㌰戵攴慣ㄵ㐲㌳㕥摤愶晦慦愲㘲㐷晤慦㌱挸㈶㔱昶㘲㔴攰㐳㥥㤱㤲ㅤ㠳㌳摣ㄱ昸戰ㄱ愶㤱㐷㘰㕤ㄶㄹ摢㔶愵ち扥㑦㔵捤㔲㠲挳挳㤵敢扣〳搱散㑢摢㜶愸愷〰㘴ㄴ㈸晦㔳㠸愰㥥晤㌹改敥㜳㙣攱换愸ㅥ㕦戴㙡扥ㄷ㜸㘶㌸㔱㐱㜴㜷㠲ㅦ㤸㤹戰㜹愶戵昷㍡㠵摡㜱散挴昰㑢攸戳戸〴㠱晤扣〸㍦愵愰㈳㐳〸扢ぢ㔹昰㕢愳㠳㠹㌸ㄲ㤵㐳㜰㠷昹㐲挳戰昱㜹敡ㄲ㥣㥡㈱慢昶㠴慥㔳慥攵捥㥢ㄸ摣㌹摣挵㝡づ㡥ㅦ㘱㤷ㄱ〵㤳㑢㜸改㘵㙥㙢攷ㅥ戴挳㐶㙢ぢ〸搹㥦㜳慤㤴晦〹㔰扡扢户戴㔳っ摦挹慦㡥㤵攳㠳㡥搱摤㝢㘱㌹搲ㄸ㐸㍣晡㕣㥢摥慥㐹ㅢ㍥戲㕤㐴戸㕦㐶㔷敤㡢捣昰慢㝦㈵㉡昰㐱愳㉢敦ㄹㄶ㝥㡣㈵㤱昶㔱捥ㄴ扥㡡慣㌷㐱晦〸㘰㙤敥〱ㄲ戴挶㔳〵㈹戰愴晤㄰敤摣愱收㑡㌵㜹㜲㐰㥢㕥㐳ㄶ㈷㡤㈷〷昹敥ㅦ〰戸昹㙥㠱摡摥敦㝥㜷摢㜷㔳攷换戵㈵挷㍦ㄸ敢っ㝤ㅤ捤扡挵散ㄵ㘶搷㤰ㅤ㡣㔵挷㈸愵㈱㐵㑣㐱挵づ㍥㌸㡦㌲搲㥦愲扦ㅦ㥤晦昰て㑣晦㍣慦㐹昹㠷愶昶㔵㔰晥挹㔵㝣㉦戹ちㄷ戵扤㔷昱摤敤㔶㜱㤰愲㤱㌳搱㌷㤰㡤っ㘸ㄲ㙤㝣㙥㕢ㄵ搱㈷愱㝣〹㜵㌰㙥捣㜳㤵㈹㕦攵㐸㥢㠷户ㄸ改㠹㈹㈸㔷㙡㐱㘹扡愲ㄳ昹㔰昷〴挳㐷摥敦㥥㘲扡搰㘷㝣㕥晢㑥扣敢ㄷ㉦挶㥦㍣㘵愳㠸ㄱ戰慥慣㑣㔲〹㌷㔲晢㜶っ晣晥慦㕡づ㑦㌴㈰㠱㌴ㄴ㌰愹㐹〲㝦㉢〶㍥㠵捦愹㈴㑣㠶昱㝦愶㡦㘲㘰㔲㥤〴晥㘶っ晣㡦㔳㐷㥢挰㌱㤱㐵愲㠱ㄴ㤰㘲扦㑡㡢㍥昱㘹㌵て捡㜹㤳㍡㜱挸㔴搵ㄴ㠷㌲昰㙢㑢慤㌸㡣慢ㅣ㍥㍥㙥扥㠴㡢㐹戸挰〱挹愹晥㡦㠳〵㕣㔸㥡㌳㐲〳摦㉥㙦㈲㔴散敢昲㠹㥤ぢ收㤲㡦㡡㐱㜳㈱挰㌹愹扥愷㐸〴㉡㍥愷昶㜷〷㤷㝡㡡㌹搸摡㡦㌸挴㤵攵つ㤰晥㌴㠲っ㡢攴戴户㘳捣㘶摥㙣搱㡣扥〵攴挰换㠲㥣㠵㤲ち愱㡣昳㐱㈳ぢㄳ搵㠵搷㤱㡤挶晦㠹挴挴愶㜴㜳㘴戵户攲昱㤲㤴愲㝦㡤ㅤ扥㡥㙣〰晥㔵㉤愲戳戶㜱昳㝣攵慥搷捥㤹昵愹㔸摥㐴㔷㡤昳攱ぢ昵㙦昰改㑤㘶㝣㡡攵ㄲ捡ㄹ㑤㌶㜵搶づ晤〷慤㔷捥㡣 | D30: 㜸〱敤㕣换㙦ㅢ挷ㄹ攷㔲㈴挵愵㈴㑢戱㘴㈷捥挳㔱㥥㑤㉡㠳㤶㕦㜹㈰㜰㕤㍤㉣㕢㠹ㄵ㈹愶散愰〸ㄲ㜶㐵捥㑡ㅢ㜳㜷搵摤愵㙣㈵㘸㤲〲㌹ㄴ㝤ㅣ㡡㥥ㅡ〴㉤ちㄴ㐱㝢㈹㤰愲㈸㥡㍥敥㍤㌴㐵㑦扤ㄵ㐸㠱愰㤷ㄶ㠵㠱晥〱改敦㌷戳㑢㉥㐹㜱㈵㌳㐹㑢ㄷㅡ㔹愳搹㤹㙦㘶㘷收㝢捥昷捤㍡愵愵㔲愹㑦㤰昸㤷㈹挳挲扤愵㙤㍦㄰㜶㜱捥慤搵㐴㈵戰㕣挷㉦捥㜸㥥戱㝤挹昲㠳〱〰攴捡ㄶ摡晤㙣搹户㕥ㄳ昹昲㤶昰㝣〰㘵㔳愹㝣㕥㑦愳㥤㠳昰㜷㉣㝡搰搹㙢㌸㠳慣㌴㌷扢扣昶㉡㐶㉤〵慥㈷㡥㑤㕥㔵㝤捦㍥㔹㍣㔵㍣㌱㍤晤㐴㜱晡搸攴㕣扤ㄶ搴㍤㜱搶ㄱ昵挰㌳㙡挷㈶㔷敡㙢㌵慢昲㥣搸㕥㜵慦〹攷慣㔸㥢㍥戵㘶㥣㝥敡挴改㌳㘷捣愷㥦㝥㙡ㄸ㙦㑥㉤捤捤慥㜸挲昴㍦㥢㈱戳㥣昰改㜹㔱戱戸㌲㈱㍣换㔹㉦捥捤攲㕦㙣昶㜸㝡戲㔸摡㄰㈲攰㥢㠵㈷㥣㡡昰㜵㜴ㅣ戲㘷㝣扦㙥㙦㜲敢㜴㝢〱ぢ慤ㄸ㝥㤰戵攷㐴慤愶摢搱愸㜹㝢ㄹ㍢㔷㌳戶㠷敤㤲㜰㝣㉢戰戶慣㘰㍢㘷慦㘲愰敡㠸㝤挵ㄷ㤷つ㘷㕤㍣㙦搸㈲㙢㕦愸㕢搵㡣㑡愹㠱㉦㐴㐳挴㈷㈶㔷㕦㥣昱敤戹つ挳㤳㌳昲戹㉦〹戰ぢ㕥愵ㄵ昶愱敥攳㜲敡昲つㅣ昳㤱敥㜰㘸戹㙡㜸つ挸愹敥㤰攱攲㕢㘷㜰扣㍢㝣㙣㡦㕡晢㍣摥扤㡦摣捡㔶㘸㙤㈸愴㙥戹愳㔸㡣㥥㘳㌶挸㉣捦㡣〸搴ぢ捣㠶㤸つ㈳搳㌲晦〶㡦挴㍢戲㈹㕤㌶搲攵戵㜴戹㤲㉥㔷搳㘵㤱㉥㥢改昲㝡扡扣㤱㉥㕢改昲慢改昲㌵挰㐴㈹㍦㌸㤸づ搳昱㌳ㅦ扦㤲昹㜸敥晣㉦㡦㍦晢㠷㜷㥦㜸挳ㄹ㍥〰愰ㄷ挲㐹捤㝢挶㜵㤰㕡㤳㠸㑦ㄶ愷昹戳㍢㔳㠰㈷捣㌳收㤳收㠹ㄳ搵㌳搳挶㈹㈳换㘵㈵㈰扦㠵㔰挶〰㍢㙣扥㘸㌹㔵昷扡挴摤扤戳㠶㉦㥡ㅢ㌷ㄵ戶捤扡㜵愷敡摦戳㜳㘳㈹㌰〲㜱㜷㝢㕢㜳㤰㡥㙥㈵戰㤵昰攵晢㡥戶㜷扢㙡搴敡㘲收㠶愵㥡敦㙢㙢戶㔷㍣㜷慤㝢敢㠲㈷扥搶㘸敤㤸搱っ㐴摡㤶ㅣ扢㘳㤵慡㐹捤㙢㜲㙥挳昵㠵㈳愷㌷㘵慦㔸㤵㙢挲㉢〹ち㐴㔱㤵㑢㍤挴愶㤰敢愷㤶ㅤ㉣ㄴ摣㕡㝤㌰㕥㙢㥥扦ㄱ㠰㤹㐵ㄵ昳摤ㄴ㕥戰扤㙡慣搵挴攱ㄶ㄰昵㑥㌴ㅣ㘹愹㕥㜰㉢㜵㝦捥㜵〲捦慤戵戶捣㔴户っ㐸㥡敡㤲㕢ㄵ㤹㑣㑡ち〵㠸摢㠱〱㑤㑢㝤戱㍢㉦㐸㐴挴㔰㑣㐶扥慢㤵散㡡㤷戱㍡慣愲㈶㐸㤳改㠷㜷ㄹ㡣昳㤵㌲㈶㠱〳㘳㙢愲昶攰㑢ㅦ摢㘵搸〶收㍥㕦攰㜴㝡㍣㕣晤昹㉤攱〴ㄷつ愷㕡ㄳ㕥愲敥搳㌸㈳㝤ㄴ㔹昶㈶〴㐲搷摤愳愲搳㙥㘸摢搹敢㔶㌵搸挸㙤〸㙢㝤㈳㐰ㅤ昴㘳㍥捦慤敤㐸晡ㅤ愸搲て㌲ㅢ㐷㔶㈸愴㜲ㄳ〴捡ㄵ㤰㔲㔹㑡愷〴㕥㙥ㄱ攴散搷挲换挳收㠲㔵ぢ㠴ㄲ捡愳㈶㌰愲戴㥡㐴摦〸㐹搴㌳㉡㑡㘱㑣㤸㜳愰㔲挳㜲㠲敤㈶摦㜶㜰㠹㈲愲㝤㔹搰㜷戲㠰愲愰㔵ㅥ㈴昰ㅡ㠸愶㑤ㅡ㈴〳挷㠸㠸㙣㤰愰搹㌱㜲㉢㤱ㄱ㍥㐱㐶〰㍥㑥㠴㠴㥥敥㉥㈳㐸散㥤㐴捡㑥㕤昹㜱㕦㥡敤㘴挹㉢㘹㜶〸ㅢ愷ㅦ㘶㜶㈷戳扢㤸ㅤ㐱愶晤ㅤㄲ㡥㔲づ攵搶愴摦㠳㘷晤㕥㘶昷㈱㠳㝣搲㈹㜳㐲㔱㐵ㅢ㙡㉦㜶㈴攱㐶㘰㈷㑢愳㔸㠹㈲㕡挶つ㍢㜳挴㤶㠸づ慤捥晥搰戵ㄹ愹㘳ㅦ敤㑥㥢昱攵㤰㈲ㄳ㐰攳㙢摤〵㌴扥ㄱ〴敤㔱㙦摤㡦慥晡㈴戳〷㤰㈹挵㐲㘳㜷㙦搶㍣捤挹摢挲㈴㔲㠶㔰㡦捡㍤㈴㘲㥡晦〹〲慥攳攸戲㙦㍦搳ㄴ㥣㌲㙦㝢晢昹㔸㜷摥づ㤱摥愶㌳昷㜵づ㍤㐵户㘸㐱㍦〸昶搲晥摡㔵扦㍣㡣㘶晤ㄱ㘶㡦㈲㙢搳㉦㍣㜹摦慡㤷㐰㥡挴㜶っ㜳〷改㜱㤱ㄶ敥敡昶愶㤰摡㘷搸㕣㌵扣㜵ㄱ挰㝢戱㌸て㍢搸昵㍣㔱挳㠱戶㉡㉢㜸㜶戹戳戵搲㕦昰㕣㥢昵晢昶戱㝦㕢㈸㠶㑣㈶㍤㤰㙡戳㡦ㄳ散捣㤸扦㈹㐶㌹搴扦愷扡ぢ㠹㔸愷㔶昲㘲扦攴戳攵扥㈴改㐱㤲㍣㠶㙤搵ㅦ㐷〶㈹愱晤愵慢㐴㤹㈲搸㌱〹搶㙡慤搲扢㤷㜰㌲㘹昳ㅦ㜶挸㤱㈱攵慣㥤㠵敦挰ㅦ戱㑢㤶摤㄰ㄶ㐳昶㡡昰㉡昰㉢㔸㌵㔱㔰㉥㔹㡡㥡㝤㔹㜱㥢挸㡡㠱㠱㡥戳㜴㠲㙦㑤搲㐹㥢㤴㐸攴昶挴挶㠴㜳㜸㤳愸攸㠲愴㔰㐹㜰ぢ㌵㈴㄰㈹㡦戰晢㈲愶〷ㄱ㔳挴挶改挷㤹㑤㌳㍢㠱㉣晢㈷㐸㥡扤㙥㍣〳㘱㠳㕢㜴㘷㤷换愹㍣搱㈰摤㠳ㅦ㜶ㄵ㔶愷昹㥡㌳捣㥥㐰搶㘶晥搰昹㤸㐰㠸ㄲ攵㌱㐲愴戵愴㥢㔷㉤㜱㥤㌴㜰挰㐴㔰㘹慥敥〷慥捤愸搲㠸㌹敦㍥敦〶昳㤶扦㠹㈸搴戸ㄹㄶ㕥摣㄰づ愸换㠳敤搳㔶攷㙥㙥㡡慡㙥㤶摣㍡㐴摢攲㝣㍦ㅣ捡戱㍥搸㤲昲㕣㥥搶㤰㝡㍢ㅢ㘳〸㑤㥥㠸攱㙢愵㈷㜶㑦㥥㙦ㅥ晡㐶㥢㍢扡㙡〵㌵㌱㘴㉡愶㘳㌹㙦㘲ㄷㄱ㌵愸づ㥡慢ㅢ㥥㄰昳㈳收〵捦慡搶㉣㐷㄰ㄹ戰㌱ㄹ愸扢㈴搶ㄱ㈱㔸㜱ㄹ晦㜳㥤ㄱ㜳搵㌳ㅣ㝦搳㘰㌰㜱晢㘰换㤳っ㠹㘴捤㔹换昱昱ㅡ㠹㐵㤶㐷捤搲㠶㝢ㅤ戱摡扡敤㕣㌰㌶晤扥挰ち㠹㕥㈵㠹ㅡ㉤慤愵搳㕡㍥㥤敦ㄵ㍦㍣㤰愷㔲㈷昱㥢㘱㈶㜱㤵捡搲㕦㥥愰扤㘹搷㠷昱ㄹ摡改㥣搳㌰㈲㐷㡤捡㠱㐴㈹㑣㑥搵㥦㘲㥦愷㤱㉤㕥戸戲搸㡣捡㝤㥡㘸㜵㤶づ晥〴ㄱ㉦愹愲ㄱ〳愱㝢敥㠰愲ㄴ搶㤱㜰挰㠰㐰㌸㥦摡愹慦㘰㑡ㄸㄲ摦㠱㘶㜱〱㐱愴㘱昳㤲戱㈶㙡〸㐵摢㐶㜰㐰㍤搰㡡戵㡤㥡ㅦ戶捤戹戶㙤㤰戲㐸㤵愵㡡㐱〲㥥愹〷敥㤲攵攸㈶㌲㐹㝥㘱㤵㜱〳㔵挶つ㔹㌵㙣㕥㘶㔴㔰㤶㌹㤶扢㙥㜸㔶戰㘱㕢㤵㍣ㅦㄸ戹敢ぢ㤲〴㡦㔳昰㐶㈹ㄲㄹ㤳㙤挶晣ㄵ㔸㙣㝥ㄱ搸㉥㐲㡣㜲敢㠸㝤㄰㙥㕡换攱㐷敢搱慦〴昹㈲㥤愴晡㌳ㄸ㉤㉢慦㐵㐰攲挸㜴㌳扡㝣㜱昳㑤搴㈸户ㅣ戱㥥㐰㈲㜰〸挶㘴㍣扤摢㌹昳㡡㘳〵挰ㅥ㌱戶㘰〵昳㍥㔰㡥っ㐵㜹扡扤㕢㘲㌵搶㘹慡愱ㄴ敥敦㙣㙡搱ㄲ㐷㍢摢攳㙡攳攱ㅤ㥡㤵㐲㠹改㤱摤㠰愴㘲搹㘱㡥晤愴㘹㌴愹户㈳㘵愳㈵㜹㑤㥢晢㑥㈱昲㈹昴㤲愴㤹㤴㝥㔶ㄲち㘲扣愴づ愸㈸扡敢㤳挹㈳ㄶ慣愱〹㔰愰㥡㔲㜵㈳㘱㌴㜰ㄱ㌷㑥慡愲㄰㍥㠱扦て㠴挵攵㝡搰搲㘲摣ㄸて㕢㘶㙡戵㘵〷㐶㐲挵昰慡㝤挲搲㔸㥢㔲㌰㤲㍢㝢㔵晥㙡㝢㘳㡣ㄸ戲㈱㈳㈲〹㙥㘰戰㈱㤸㉢ㄶ㑣愵㜱㌶挲慤㙥㔴攷昹戴㈴っ㐷㘲愰ㄴ㔴攷挵㤶戴挲㥡㠶晣戸散搰㌸㉣㑡㌹慡㥢㌳㙢㍥㌴㝡㐰㌹ㅥ㤶㈴㠳敢收㘵㝡愵㜰㝦〱㘲㌷㉣慤㔴〲㐴㜵ㅢ〳昰㘰搰㍦搸挱㡥愸愸〹㡤㌳㑡搰㕣〲攱戶㉥㠲扣搳㈳㐶㈱㐸㑤㤹晥㜵㑥㝢攷〷㑣㍦㍢㤷㡡ち㈱ㄳ㌱搲㤵㘰㍣〰戹昱愰㈴戹㘸㍣㡡㤵㉢挹㈶㠵搶㜰㔴㐷ぢ㘳㠴ㄶ㥦ㄷ攰〲て挳㔸愳㘴㥢ㅡ㉥戸〵ㄶ戴㘹㙤晢㠰戹攸㔴㙡昵慡㤰慡㌸㤲搵㔲㈳昷〵扥攴摤㍦挵㑤〹晢ㄲ㙥捡㈲㑥㔲㕣㌲㤱搴扢搹慤㝦〹摤愵㤰挳ㄸ㑡戶㌱昶㤸攰㤵㤳戱戰㡥㉢ち㌴てて㌶敦㉥挸㝢㜳㄰㘹ㅤ㔵㤴㘵㤷㜰ㄵ慦ㄱ㐰㤶摣ㄶ〳扢攴㕥㜲㘹戲挷慡㉥㕡慡慡㉦㜰㠴㜵㉡㠱㤷换挱ㄸ改㤱㍢㌸㐸敡㘶ㄸ搸扤昹愶㝣㑣摤㍣ㄷㅡㅦㅡ挳扢㍣〴愵戰慢㘰㈴摡摢改愶搱慤㌱昰㑢挳㕢晦㌲㌲㡤ㄱ㘰ㅡ戴㠰㔴〶捥㉣捡扢ㅢ㌸㡣㐵㈶〴㐷攳㜱㔴㠶㈸挷攱慦〷搲挰㑤㍣㐷慦扡㔰㐲挱㠴扣ㄳㄶ㕤㑢㥣戲㜱〲㜲扤挳㙤㤵㉢㐶㠰㥢㉦捥㤱戶敡㤹㙡㤵收㉥摣㜳㝤㠱㔵摣摡㔰收攸㐴摢㝤㉣戹㈶摡㜷て戵㌵㠴昷〴㑦捥ㄷ㉦ㅡ㐱㘵愳ㄴ㙣慢㍢㕢扤㤲㐴昶昷㜰㐷散昸㜶摡捣ㄹ㠷㜷㔰户戸昷㠵㙢㡥㝢摤㤱昳捡晡扣昰㐷㉢㔶ㅦㅣ攴㈴ぢ愹㑦昰㈳㔳㍡㤵晤ㅤ㐶摣换戴㌹㐰搳㍦挲㜱㘴㔲搲㘰ㄲ攵〴㍡㠱敤摥戸㌰㐰㍡㤹㘸愳ㄳ㈹〸昶〹挵㔹晦捣〸㐵晢㉤搰㑡㘲㔱㈷㜲散昹㝢㘰㝤敤㌷愸㈱挲昱ㅣ㡡㤱散〳㈸㈵愰㑥ち昲昰㜶〷敦㠲晣晦㘰㈹攲收ㅤ搹改扦挰捣摡〷敤㈸㍡㑡ㄴ晤扡ㄳ㐵㡣挳摥㔲挴㥢戳摦㍦㙡㝥敥户㝡晦㠷㐷捤㘷㠱㘱㈶㘹㡤㈱愶挶㔸㝣挳ㄸ㐸㜷ㄸ〳㡦愰㔹ㅡ〳捦戱て挳昵捡ㄸ〸扤ㅤ㑢愸搸摤ㄸ㘰㄰㉦挱攴㡢挵㔴㘳づっ㥥戵づ摢昴㠴㕤挴敤㕡攱㈳㜰て昵攴捦挱昷㜴㘷㘷昵㡡攱ㄹ昶ㄱ㔹㝦挱ㄳ㔰㕢摥㉡慥㙢换㉥散㜱昷㡥㉤戲搳づ㕥㠹挸㥤扥敦㌹搹摢㈵㜵㘰㑡㈵攵愷搷昲㕡敥㔳昸㐴㌴㥥㄰㔲慦㑦晣晣挲摦㕥㝢晢ㅣ慦愵㠵戴㥡㘵ㅣ戸㤷搸㍣㉤〷㐴㙦㘳㌷㐲づ昱敢㥢㈵㝣㠶㘴㙤搶挴慣攱㐹㝢挷搷敤愸愸〸㉦㐶㤸㡡昸晡挱㤸挴〵〷㘵㑣ㄶ摢ㅣ㥢昲敢㈵改っ㉣挶㈶㉥扤㜷㔱㝣㔰敢慡戲㝡戴㉢戳扦㠰搲戹挵㠹戴摡㠳㍣㕦㌲㘹摡晢敤㕡敤っ戵㥡㌴ㄳ戵㈹㐰㐴㔲ち㠱〶㔲㐸晣挸挲挸扦㤴㔲㉢㈸㘴㡢挸ㄲ㐲㘸敤戱㕣㥥晣昷㠵㠰㘸摣敥敢昱㑢ㄵ散㈲戰ㄸ㜹摤㝢㍤扢搲敡㡣㔴ㄳ㘳戲昲昴昱〲ち昲㤸挲ち〶㘹㘵敤㘵ㄴ愲㤴㍤㠱搲㥥ㅤ㑦㝣挹㠸慤㈲㙣㡡戱戳㌶扤㙡〵晢扣㔳挷ㄵて攸㤹㥣㔴ㄸ捥㐱㔶攳攸㈹㠳㜱ち戴愰慡㤸㡦慡㘲愳搳㔰搸〴㥤攵ㅣ挱昹ㄳ㔱㍥㝥づ挴昶愹收搰㠷摡㕢愸攳㥣㐱㉣㤰扦戰扦㡥㈶㌰㌶摥㑡㡥㠱㠴摤ㄳ㔴㕥摤〱㉦愱㡢戴攷㌵扤㔹攴扢㌴㡤挱攸㠸戳〶㍡昵㍦挳搴㤲戳㔶〹捤㜸㜵㡢晥扦㡡㡡㕤昵扦挶㈰㥢㐴搹㡢㘱㠱て㔹㐶㑡㜶つ捥㜰㐷攰挳㐶㤸㐶ㅥ㠱㜵㔹㘴㙣㕢㤵㑡昸㍥㔵㌵㑢〹づて㔷愶晤づ㐴愳㉦㙤摢愱慥〲㤰㔱愰散㑦㈱㠲扡昶攷愴㍢捦戱戹慦愰㝡㘲挹慡㜸慥敦㥡挱㘴〹搱摤㐹㝥㘰㘶挲收㤹搱摥㙢ㄷ㙡て㘱㈷㠶㕦㐲㥦愵㘵〸散攷㐵昰ㄹ〵ㅤㄹ㐲搸㕢挸㠲摦ㅡ㡤挵攲㐸㔴づ晥ㅤ收ぢ㜵愳㠶捦㔳㤷攱搴っ㔸搵ㄷ扡㑥戹㤶摢㙦㘲㜰攷㜰ㄷ敢㌹㌸㝥㐴慤㠸㈸㤸㕣挲㑢㉦㜳㕢摢昷愰ㄵ㌶㕣㥢㑦挸摥㥣㙢㠵散㑦㠰搲扤扤愵㤵㘲昸㑥㝥㜵慣ㅣㅦ㜴㡣敥摤ぢ换㤱挶㐱攲攱攷摡昴㜶㑤搵攰㈳摢㐳㠴晢㘵㜴搵扥捣っ扦晡㉢㘱㠱てㅡ㕤㜹捦戰昰㘳㉣㠹戴㡦㜲㉡昷㔵㘴摤〹晡㐷〰㙢㜱て㤰愰㌵㥥㉡㐸㠱〵敤㠷㘸攷づ㌵㔶慡挹㤳〳摡昴ち戲㈸㘹㍣㌹挸㜷扦ぢ攰挶扢〵㙡扢扦晢㥤ㅤ摦㑤㥤㉦搷ㄶㅦ㝦㉣搲ㄹ晡〶㥡㜵㡢搹慢捣慥㈱ㅢ㡢㔴挷㈸愵㈱㐵㑣㑥挵づ㍥㌸㠷㌲搲㥦挳扦ㅦ㥤晢昰㡦㑣晦㍣愷㐹昹㠷愶搶㔵㔰晥挹㔵㝣㍦扥ち〷戵摤㔷昱扤㥤㔶㌱㐶搱挸㤹攸㥢挸㐶〶㌴㠹㌶㍥户慣㡡攸㤳㔰㥥㠴ㅡ㡢ㅡ戳㕣㘵挲㔷㌹搲收攱㉤㐶㝡㘲㜲捡㤵㥡㔳㥡㉥㙦㠷㍥搴扥㘰昸搰晢摤㔵㑣攷㝡㡣捦㙢摦㡤㜶晤攲挵攸㤳愷㜴ㄸ㌱〲搶㤵㤵㐹㉡攱㐶㙡摦㠹㠰摦晦㔵搳攱㠹〶㈴㤰㠶〲㈶㌵㐹攰㙦㐷挰㈷昱㌹㤵㠴㐹㌱晥捦昴㔱〴㑣慡㤳挰摦㡡㠰晦㜱昲㐸〳㌸㈲戲㔰㌴㤰〲ㄲ散㔷㘹搱挷㍥慤收㐱㌹㙢㔲㈷づ㤹慡㥡攲㔰〶㝥㙢㔲㉢づ攳㉡㠷㠷㡦㥢㉦攱㘲ㄲ㉥㜰㐰㜲慡晦攳㘰ㄱㄷ㤶收㡤挰挰户换㕢〸ㄵ㝢扡㝣㘲攷㥣戹散愱㘲搰㕣昴㜱㑥慡昶ㄵ㠹㐰挵㘷搴晥敥攲㔲㑦㌰〷㥢晢ㄱ㠵戸搲扣〱搲㥢㐶㤰㘱㤱㡣昶捤〸戳愹户㥡㌴愳㙦〳㌹昰戲㈰㘷愱愰㐲㈸ㄳ㝣搰挸挲㐴㜵敥㜵㘴愳搱㝦㈲㌱戹㈵摤ㅣ㘹敤敤㘸扣㌸愵攸㕦㘷㠷㌷㤰つ挰扦慡㠵㜴搶㌲㙥㤶慦摣昳摡㌹戳ㅥㄵ换㕢攸慡㜱㍥㝣愱晥つ㍥扤挵㡣㑦㤱㕣㐲㌹愵挹愶昶摡愱晦〰摤㤹捥て | E30: 㜸〱敤㕡㕢㙣ㅣ㔷ㄹ㥥㔹敦㡣㜷搶扢昶戶㐹敦户㙤㥢㔲㡡搳㤵㥤㑢㤳㔰㐵㡤扤㡥ㅤ㔳㍢㑥戲戹ㄴ㝡搹㡥㜷捦挴ㄳ捦挵㥤㤹㜵散愲ㄲㅥ㄰㐲愸慡慡㈲㔰愹㔴挱㉢扣㤴〷㈴ㅥ㠰㔷㐰愸〸捡㐵攲㤱〷㕥㔰ㄱち㍣昲㔲扥敦捣散㝡㜷扤㕥愷慥㉢晣搰㘳昹摦㜳㥢㝦捥昹敦攷㍦愳愸㡡愲㝣㠴挲㕦㤶㌴㉢昷㔷搶挳㐸戸愵戲敦㌸愲ㄶ搹扥ㄷ㤶㈶㠲挰㕣㥦戳挳㘸〰ㄳ昴慡㡤昱㔰慢㠶昶慢㈲㔳㕤ㄵ㐱㠸㐹㥡愲㘴㌲㐶ち攳捤晦㐲戳㘲昰㈹㈳つ㤰挳㉣愵㔲㥥㕣㔸扣〶搴㤵挸て挴挱攲攵ㄸ挱挹㘳愵挳愵昱戱戱愷㑡㘳〷㡢攵㠶ㄳ㌵〲㜱搲ㄳ㡤㈸㌰㥤㠳挵㜳㡤㐵挷慥㍤㉢搶㉦晡换挲㍢㈹ㄶ挷づ㉦㥡㐷㡥㡦ㅦ㌹㝡搴㍡㜱攲㜸㑥〷攲昹昲攴戹㐰㔸攱㉥愱ㅣ㈴捡㠵昲㘴改慣㠸㜶〹㘵〶㈸捦㤶㈷愷㝣搷戴扤摤挱愹㤱戸㠷愷㐴捤㈶ㄷ㠴〸㙣敦㙡〹㡢敥㈰㌲㕡挷㑡搳愰㜶捤っ愳戲㜰㥣ぢ挲攲昶㜲㉥〹㈶〲攱搵㐴㌸散㥥㕥慢〹㈷ㄹづ㌳敥㘵㌳㌸㙢扡㈲捤捡㠸ㅢ昳㙣戶㉥扣挸㡥搶昳敥愵㔰㕣㌰扤慢㠲㔳㌴㜷愶㘱搷搳㘹㌵㥤㔶〶ㅥ敦戵ㄸ挹㤸搲㜴㔰㉢㉦㤹㐱㈴㕢㘴搹㜸慦戹㙤搲㈱ㄷ摥戱㉣㑡㔰戱敢㈹㌲愹㘲扢捦㡡挰ㄳづ㕦挲扤㡤㜶㑤㤲㌴㠹㈹摦㈲㑥㜳㌷攴㡢㍡㤴〸㍥户挲户ㄸ〶㐱ㄶ㐰ㅦ〲挸捣搹㤶㠸㙣㔷ㄸ㌹昶攷〱搴昴㝦愰㍤敤捦㜱㘲慡㙡愶慡㡢愹㙡㉤㔵慤愷慡㈲㔵戵㔲搵慢愹敡㔲慡㙡愷慡搷㔲搵㘵捣㘹㤶捣攰㘰㉡㈹挵㕦摦㜸晤〹晤㉦愷扦愵扤昸挳挱㍦㉣扦愰㔱㘱㡥昶摡㐴㌷㝤㈶挲戰攱慥㔰㔳ㄳ摥㜱㍢㠶㍢ㄵ㐶攷捣挰つ㜷㤷挹㘰昱㜶㕣㥥〸摤㑦㥦换㜸挹慥㜰㔹ㅦ〱戱づ㕦ㄱ昶㘲挳㜱づ㥥戱换㡤攸攴昸昸挱㌹扦㘶㤲愲㈷㡦ㅤ慣搴㑣㐷㥣㍣㔴ㅡ㍦㝥昸㘰㘵挹㕣ㄱ㈷㡦㤴㡥㡦㍤㘵ㄴ㐸攵摢〰昴摢〱搲づ挴挳搸挷扥晤〰慡晡㈱㐴㠳攲㜱晤昰㤱晦㝥昰㤳㤷收㝦昶攷㝦㕣㍢扦扥戲㤶扢ㄳ挳攷ㄳ㔹㥢ち捣敢㔰搸つ㔳㜰愸㌴挶扦敤㉤㈰っ愰㜵搴㍡㘶㡤㡦搷㡦㡥㤹㠷㑤㡤搲㝡慢慡挷ㄵ收慣㉢戶㔷昷慦㑢㕤捣㔹搳戶ㄳ㠹㐰㌶㐶㉣晣挴昶㐴戶昳搶改㌵㔸攱㕡慣戶晢慤戲〸㈲搸慦㘸㝤㠳换昷㑦㥡愱搸㘸㡥㈶戸㈷晤㠶㔷て敦敢㍤㔸㠹捣㐸摣摢㍤戶㠱㘴搳㘳ㄵㄸ㌷ㄱ捡㈵㍤搸晤搸㘵搳㘹㠸㠹㌵㍢ㅥ㝥愰㙢ㄸ㘶捥㕦摣㝡㜴㍡㄰慦戴㐶㌷慤㘸〲㑥㜰㔵攲摥戴换㜸㈸㕥㔷戱扣攴㠷挲㤳换ㅢ㜵捦搹戵㘵ㄱ㔴〴㕤愸愸换慤摥挱愱挴搶㡥㉥㜸搸㈸慣㘷晤㤱昶㕥ㄲ㕡㜸㜵㔱挷㝡㔷㐰攵昵㡢收愲㈳敥散㤸ㄲ扦ㄳ〳昷㜴㜴㑦晢戵㐶㔸昶扤㈸昰㥤捥㤱㠹晡慡〹晢㕥㥦昷敢㈲㉤㡢ㄲ㐳㔵ㄹㄸ㔰㔵攵昳扤㙣っ㜱㠷㌴愵㙤㐲㐲㠳摤㝦㜲㥢㄰㜱㜲㑦ㄳ摣挲㡣㑡㥢㤰㜱晥ㄳ㝤㔷搲㉥㠴㥣㍤搶㜷㜶て㈱攵㐳㜷㜷㉡㕥改〲昸〳㍥㠰挸ㄸ㑣ㅤ搸ㅡ攵㠶㕣㙥戳搲㌶慥㌰㘲攲散㍥㐴㤳㘸㕢戲昷改㑥㑥愵昶㈵扢㍦扤ち㉦㝥挶昴敡㡥〸晡挶㝢㉡㔷㘴摣㐵㜰㌷挱㍤〴昷ㄲ摣〷愰晤ㅤ昶㙤㑢㡡搲㝦愹㙢敡扡㜶摤慥㐷㑢晡㤲戰慦㉥㐵攸㐳㥣㤸挹㤰摣㥢㡡昱〰扡㡣〷〹ㅥ〲挸㘶ㄵ扤㠸㕦㐵捦愲㈸ㅡ㕤昱挷てㄸㄸ㠵ㅡ㌲㍥㐱昴ㄸ㙡㉥挲愰㜰㘰愰搷慥捦㤸攱㔲㐴㠵敢㍢㈸㐳㠳㠷㠹昴ㄱ㠰摣愳〰昳㘷㠴〳㜵摤愵挰㔳㘳㝣戱㙤㠸㐳㥦㜳愷㕢㔹昷㙡㑢㠱敦㈱ㄲ㥦㌲㈳㜳愲㠶㌸㉥㔴㑤摤㥤昳攱挸㜴㔷晡戳㥣㝢㐱慣〸㌳㉡挳ㅡ㐷㜹㜷づ㌱愰㌴㤷戳昵㌵捤㡤挳户㈹ㄱ搶っ挶㜹戳戰㍥㙢㍡㙡㌰愷㌹㤷昶㐴慣㐵㐴㍤攸㈲㤸㠰搴ㄸ㤸㌴㉡㥦㡡㙢㝣㌲㉦晢㥡㑦㘷㤳ㄶ㌰ㄴ㘴戵つ换㤰散㠸㌱㈹ㄴ㄰㌸㑡㐵ㄹ㐸㈷戰㕢㔱㉥㐵戶ㄳ㤶ㄲ敡㤶愶㝣ㅣ〲㠴㍣㡢㤰敡扡づ㌹搲晢昲慡㕢㥦ㄹ㈸㉥搴ㄶ㘳戴㔸捡㑣攰㌷㔶ㄸ㐶散ㄶㅥ攲㔲㡣〳〰㍦昸昷㡦㥦㝥散摤昷㍥㑡㝥㙦㐰㔳㘴搱ㅦ攳敢㕡戱㘴ㄱ㉤昶攳㐷ㄶ攳㜱晣㘴つ㑥㌲㡡〰㥢挷㌴㐶㥥㍤㉤敢ㄶ挱㉤〵㌶攷㘲摢ㄷ〳㈱愳昵㡣㙣慣慦㠸扣㝢挵て㤶ㄷ㝤㝦㤹㔲㌰㉣㕢攱㤲㄰ㄱ㐳攰愱㈴攲㘷㕤㔵搵㠱㠱㡥㌸户㉤㔶㘶戴愹㡦〲攴㈷ㅣ愷搸挴ㄸ敡〷搱㌵〰て愲㍦㠹捡㕤昳㔷ㄶ慡㜳攵㜲昵搰搸昸搸㤳㘳㐷㥥㍣㜴愲戴收㠴慥晡㐷散㤰㘱搲晢搷㙦㥦㥥㜹㙦愹晣敤摣㉦㔷晥晡摢㔳㌷搵て㤲㠱㑤㜱㌱攳慥㍥㠱㑥㐷昴挹戹ㅤ㠱捥㈶ㄷㅥ晢户捦〲㤵㍤ㄷ愸㜴〶㈹㕦搸挶㌳㜷㠵㈹㕢㍡愵捦摣㝣慦戴㑥散收挷愰㉣敡敦愱㜶㜴敢愸㜷ㄶ攳㄰摡挶㘱㠲㈳〰㜰挸搲㐰改㔹攳愹戸愹昲㉣㐴ㅦ㙤ㅣ㈳㌸づ愰昱㍣搴摦㤵㐱㕤㜹〲㑢昳戸㥡㜷愷㠴㘵㈲昵㈳摤㡦㙡晥㍦扤㔳ㅡ搹戰㌶搷搴㝦ㄳ㔸㍢㉤扦摥ㅤ挰㜶㈶㈶㤰㉥愹捦〸敦㈲㉣㙦戸㥢㑥㘷㌷㥤㤷㜱〲晢㘸ㄶ敤㔷㄰㠴㕢摦ㄳ戳㠷㠳慢㡣ㅣ慡㔵㈵挳ㅤ戲㐷㝦ㅡ㈰㍥ㅤㄷ㔱〳挶㤶㙣ㄹ㈷搱㤱㌵㌸㘱戳戳㤳㘳㉡㑦慡㜴㜸〶ㅤ㡣㍥〹㌰〰㠹㌱攸㔲搴㕦〰㔵㑦搷昱昳㘴愰晢攸慤㌱㤰敤㡥㌱㘴㕥愸㜵㈸㘹戳㈳挳㝣愳㜵挹戳愳㜰挸㥡㘸㐴晥戴ㅤ㠱搱㌹ぢ〰㔵昹挸扤㌲㝥㙦㝢㘸搴扡㙣㡢敢㘴昱㐳㥢㠷㤰㌲㉢㌷挲挸㤷攱搳㠳㥢挷愷晣戳㝥㌴㘵㠷㉢㡥戹㝥愰挷㜰㍣㜲㘵㐹㜸㌸㔰〶㌸㔷㙥㌷挹㕦㔹ㄱ昵ㅥ㙢慣昸㡤愰㈶㘶愷昶挲㤱㔴㡤攳㐰〵ㄱ〶ㄴ㑥㝤㙣㙢㐳摦㐶㜷ㅥ㑢㔲㠸㑡搴㥤㥤㘸昴㘹㍣慦慤ぢ㌳〸ㄵ㘳〶㜵㠶愱㉡㑦ㄹ㌸㘶昰愰搳㕦㐸摡㡥戹㑣昸㘵㉤㌰㌶敥换㈷㜹㤴㔹㉦戴敢㈲㥢戴收㙤㙦㌸愹㉥㌴愲㡥ㄱ㜳㙤㕦㌲㠲攰㘹挱〳昳㙢㘶㔰摦ぢ㝣㈱㔵愰㙤㤲㈹慡㡥扦㥤㤱㍡㐶愳㈸㌷㥢户っ㌷㙦挰㜷㤰捥㍣㑢昶㡣㘳㕢捡㠸㑡㕢㠶㠰㙥㈲㑦㔲户扡㌳㙣捤ぢ搳㤳ㅣ愸㐴昵㈹戱㍡㉣㘷〸㠸㌷昲搴㡥搸搷搹㤴㡥挵戰㈶ㄶ㐳摦㘹㐴㘲戸㔵㤳㙡㙥㔸ㄷ㠴㠳戴摦慡挸戵㙡攷㙡ㄱ昲㘱㉤㝣捣攴散ㅤ敥㠰㈲改㠴㐳慡攴㤱摥㐷㜰㍢㌷㐱つ摡㈱㐷㘱搵㉤㔹晥昵㡣晡捥昷㔹㝥昴㡣搲慣㤰户㘰㉥㜳〴摤㥥愳搳搲戶愷㜳愸㐵晢㥡㔹挶搸扥㐹搳㤵㙢昶㌱㤳㤲户愴搵㐳扡㤴㘹敥ㄱ慡㡤㠳扢愳挸㐶㝥搶㔹ㅦ戶㘶扤㥡搳愸㡢㌹㜳㔱㌸㑤㡢敤〷敥ㅥ攱㤷扣㕢㡢㜹搵㠷㉥〹㔱㘶㜱挱搶㑣ㅥ敤搸挸㈹挶ㄹ㤰㔵㍡㔶攰㠸搹挲慣捤挷捥㥢㌱愶扢㝤㈳敢㉢㙦㝤㘰搲㌶㜵搱㤶㌱戹搰㑡扤㐹㙤㙢㥢㌶攷㈳慤扥㉣敡㙤㕤㘷散戸㙢捦攸㤴㘴㤱慥敢㍢㜵㉤愰ㄵ捡捤㈴挶㠱戱㡢摢捦㌰㘲愶㘲㌰挵搵㥤㤶㘸㔳っ改昵愵〱攴搱㜵㠴搶㉢づㄹ㉥摡㤱㈳㠶㉣㌹㉥敢ㄹ慡〳愹㌹㘸㕤㕣挲挹㝥㉡㙦捤〴㜶摤戱㍤挱昰〳㘹㝡摥戴捤㠹慢㐸㈸㥦昳㐳㥢户ㄹ㜹敢㘲㘰㝡攱ち㌳㌹戵昵摢㍢㕡㤲㔹㥡㌵㘹㝢㔰㥥昸㥤慣㡦㔸㤵㈵晦㍡㉥㠳ㅢ慥㌷㘳慥㠴㝢㠲㔱㡣㉢攳ㄲ㙢㔴㑡㑤愵搴㑣㉡戳㔳ㅦ〵〹〷㑡ㅥ㜰㔲〴〹慢㤸㠸散愳慢攴㔲㤲捥愷慥㜲㑤ㅤ㔷㙤㍤㜳㡣慤㥢㜴㤹㔸晤ㄲ㥦㜹ㄶ㘰㜶收搲散挶㈵搰㈷戹〹搷ㅥ〲扡㍥㕥㐰㑡㐵㉢攱㝣〷㈶て挷㤲挲㍥ち㡥㈱ㄹ捥㔶户昴㘵㉤㌹㠷㠲〸挷挹改慣㑥㈳㐷㤸㠳摥挳敡㈲戵ち㜳㍢ㅣ㌷ㄸ挷戹愶ㄳ㈶㘳㘵摦㜵㑤㑡ㄶ愵㔲㕥愹㘵㘴㔰つ㐳㘲㔸〰㔲晣㤲㉥㜳つ㕤收㥡散㠲㈷收㈵㤲慣ㄳ㤷㝦搵っ散㘸挹戵㙢ㄹ㌶㜸搱戳㈷㐴ㄲㄲ㈴昳㤹㈰㈸㡢㤴㑢㐴愸摤攷挶㌸昵〸㙥㤷㜰㘸㈰改挸㝤〸㙥㑡扡㙦㜵㠷ㄹ㝡㠴慦〶㐳㕡㘳ㅥ㐰㘳挶ㅢㄶㅦ㄰愵㉤敥㐲㡦戴㐱改㠷搱摦㌷㙦捡戳㕢㜶捥㌷敢搳戸昵昳㠳挱攴ㄳ㡤っ㤸㐸摢ㄱㄴ㤸㉡㉦攳㍥〹昷㔴慢〸㜴㠳っ㍢㉡挸㐲愷㤹㘴搷㘳㙥㤱ち㡡愶つ㘵㝡扤㙢戶㠹敢㐰㤲㑡㙣晦摥㘴㜶ㄳ晥㝦㥥㍦づㄳ捡つ㌰㔶㌰捥ㄲ㉣〰愸㑣挲㜳㍦㕤ㄳ捥㜱挲㜹〰㡤挹搸㙥㝤搸㌲慦捣㡦㈹㌴㤷昹敥㡣换敤㈰愶搰㤱〵㐷摥ㅣ㈴搱㠷㌲捣㍢ㅢㄷ〰㝥昷晥晢㍣愰㉡敡攳〰捤昷㌳搳㥡㉣戰㠲慡㜱ㄱ㐰㘳㔶攵㘳㘴慦攴昶㕡㠷㐸ㄹ捤㙥㥣ㄹ昳㔶晢ㄱ㜱㥦㤵㥣ㄵ摢㑥㠴㕤㝤㌲㡡㠲㐶敦愱昳ㅥ挸〱戲㌵昵㘳挷㙥㤶〲㑥㘹捥㉡㉡㑤㌶摤慡愲㕦〲搸㥦摣攵ㄷ㐱㥣㈸挰戵㍥ㅤㅦ㐷愵㝤㑦㙦搸㜷㤵戹㉣㜹搹㜴ㄹㄵ㤵㐹㉤摡㑥敡㔲ㄱ㍦挶㜳〰摢敡㤲捡攴ㄷㄴ㑢㌱扥㥣㔴搸㔰㤹〱㙢㑡〵慡㑤愹昸ち慡挶昳〰㉡戳㘳㍤㈶扣挰〹㉦〲㘸捣挳㜴ㅢ㡦捥㜴ㄲ㡥挳扣昳㑦换㙦㜴㜸つ㤳挱㡤㠶扣扦搱愴晥つ戵摤扢攸昱㤵㑢〶捦愰收㠶㍡㍥㘴〸㐴㍤ㅢ㡢ㄶ攵ㅤ攴㔴㔲愹㌴㙣㤱摥㥤㕣摦昴㕡愲愸〸㤹昲㔲㘹㉡昴㤷〰㜲㑣㤱〰㝦㔵㝥〸㔱㐴㑦㝢慡㈷㥢㌵㕥㐶㤷㤲㔵愹㌶捤㥤搳㘲㈶ち㘳愲㙡㉣〲㘸㌳〰户㤶〵攰扢ぢ㙤愹ㄹ㤹㔹扢捤㍡摦㌰ㅤ㝣愲戴㠰ㄳ㐲挴慥扤攰ㅦ搲昱㌹㙤㕢搲捡㉤㍣晦㈲㜷搶㑤㠳㑥㌶㈴㝢㤳㠹挴㥤㥤攳戲摡扢攰搰慤扤〵挲搱㤵摡愳愵㤴敡愷昱㤴搱㈷㑣敡㍡搲㄰搳扥つ㕢㑦晦㍤敡㐰㔳㙦㈱㕡慡攳㔱㤵㈱ㄳ㜱ㄸ㈲愹㐸㤳㑤扦搷慤㉤㥢㕣慤㤴㌶㡢㑥户ㄲ慤㍢〸㜴㔸愵昶挴㌵摡㝢㘴㙣搰㠷攵昹〱づ㙣改敥㙢㠴搶戳扣㐶ㄸ摡摦昵㉤㠱㝣㡣㈳昴改摡㍢㈰敥㤶捦㜷搲㤳捦戰攸㔷〱昶捦摢戵挰て㝤㉢㉡㔶㄰慢ㄷ昹㜵㠹㠵㔳摢㠴昶㌶㌰昶㝣㈷㌷㤶昶昸ㅤ摥㉡戳慦搹㘵捦扦敥挹搵㘸㈱㍦戲㤱昴ㅡㅣ攴㙢㄰改挶攵㔱㔰戱㐰㌷捡㔲愰㉢㘵㈹搰㙦戲ㄴ攸㍢㔹㐶攸敤昸ㄴ〳搶㕤㉤〵晡㐸㜲㑦户〱㙥㉢㑦㔶㍢㍦㌱搴慦愱㍢㠷㙥㘹捤㉥攰㝢ㄴ㝤ㄹ㍤挳攸㘹ぢ扤ぢ㜴戲挴㘲㌸〴㕣愹晣㜰㑦扤㡣㥡摣戸㥦㔴搸㔰㘹搴㈹㉣敡㥢㈰㈶㔹㠴扡愲扦〲戰㈵摤搵㌷㌰㡤戴敦愴ㅤ敤㍤〹㙦㠴〰昹㠱〲㙤㍢㑢㠱昶㥤愵㐰㘳捥㔲愰㐱㘷搱㕥〶搸搶〴㈴搶㤵戸搵㐵戵愶搶㔵㤱ㅥㅣ摣㤴ㄸ敤㌴〷㌰扣搲㜴搰㜰攸㍡愱昶㍡㤶摣㕦扢㥢て㜵㑡愳㐴〱〴㐶㠳㘰ㄵ㈰㕢㌰〱㈵㤱挹㉡㠳㡣㌱挸㡢〲つ戶散㝦㤵㕤扣〰㤲㥦挵愹㜵搴㈴昱㕦㐳愵㔹ち㔴㔹㐹戲慦愱㤲ㅦ㔰挹戱㍣晥㘵㜲摦攰㝤㜱㥣搸晦ㅡ㔶摥㌳戱晦㕡㌲搰㝤㈷㕣㈰㡦㈵收㙦㄰攵㠰㐶㥥㍣扤㜵㈶戹㑤㝥㐶㘱㥦㍡㍥戹㍡㡤㑦愸搶ㄹ㐲て㈰㤴㡤㍤㘹㍡昵挵㥤攱㈲㑢愸㌷晣搷扥㡡挵㝦〲㍣㥤㑣㈲㐶㐶㉢挶㌷〱㐶挸愹收㝢㔰㙤㤶㥢㌲㘴㐶敢㔴摣㤳㐹㝥ぢ挹敦晥㔳㈳㘴慦㝣昲㐵昵攱户㈶戴扦摤㘸㝥户㄰㍦昱戹㘴收晤愷ち捦㥤昸改㙦㔶搵㔳㝦㥡㕦㐴㜵摦㈹㤵ㅣ摦㘰摥㈴㕡㌱昳㔶户㘲㕥㈳ㄹ攸扥㤵㈹㌴㘵㐴愳㔸㙣ㄷ㉡户㝤〴㌸㠲改㥡㐵〳㍥㘴挵摤愴户㑣扡㍢搲晡攵㜰㡡っ昰ㄹ摥ㅣ㜲㈲㌸㍢攲ㄳ攱挴挲㈰㔷挲㤸愷㜹㝡㌱㘴㑢㌲换㕡〸㜰㥣ㄹ戴㘶㐳㘴㕥敡ㄹ㝣昴ㄲ攱戳㐸㙦㉦㠴㄰昰㐷㘹捡㈵㈴㤳㐹昹㔴㑦㔷㐰ㅢ摦㝤摡㘹㑢㉦㙤搰愳㤹㕥㑣昱昰戹戳〰㐲㠶挹㈹㌵〴㕦愵㜹晣昰搰㍤搲㥣㈲㤰㔴㡣㌷戰㤰慣㉡搷换㐰㍤づ愹㡢攸㔴㔴敡㈸㔹慤扦〹搰ち搷敢㙤攱㝡㕡昵㥢㐸㤵慦㉢ㅢ㐸摦攲㔳摦〱ㄸ挰㈵愰㌴㌰〰ㅤ挸㌵敡㐳㌷㘵攸搹愷戹㤴慥㑦搱㠶㠶㐸慥㘶搱戸攴㕢愶ㅤ搵㜱㠷㜱捣㜷昱愸捡慤昰㠵挶昷搸㤲㕤㙣㌵㜵〱㜵㐵㤵㐳散㝤㥢捤愴ㄴ㥡㡤愱晦〱攸〸㄰㠸 | F30: 㜸〱敤㕣换㙦ㅢ挷ㄹ攷㔲㈲挵愵㈴换戱㘴㈷捥挳㔱㥥㑤㉡㠳㤱㕦㜹㈰㜰ㅤ㍤㉣㕢戱ㄵ挹愶散愰〸㔲㜶㐵捥㑡ㅢ敦㐳摤㕤捡㔶㠲㌶㈹㤰㐳搱挷愱攸愵つ㡡ㄶ〱㡡愰扤ㄴ㐸づ㐵搲挷㝦搰戴㍤昵搴〲改㈵㤷ㄶ㠵㠱㕥㝡㑢㝦扦㤹㕤㜲㐹㡡㉢㤹㐹㕡戹搰挸ㅡ捤捥㝣㌳㍢㌳摦㜳扥㙦搶ㄹ㉤㤳挹㝣㠲挴扦㑣晤㉣摣㕢摥っ㐲攱㤴㘶㍣摢ㄶ搵搰昲摣愰㌴攵晢挶收㐵㉢〸晢〰㤰慦㔸㘸て㜲㤵挰㝡㔵ㄴ㉡ㅢ挲て〰㤴换㘴ち〵㍤㡢㜶づ挲摦晤昱㠳捥㕥㐳晤挸捡㌳搳㡢㉢慦㘰搴㜲攸昹攲攸昸㔵搵昷昴㔳愵ㄳ愵㘳㤳㤳㑦㤶㈶㡦㡥捦搴敤戰敥㡢搳慥愸㠷扥㘱ㅦㅤ㕦慡慦搸㔶昵㠲搸㕣昶慥〹昷戴㔸㤹㍣戱㘲㥣㝣晡搸挹㔳愷捣㘷㥥㜹㝡〸㙦捥㉣捣㑣㉦昹挲っ㍥㥢㈱㜳㥣昰挹㔹㔱戵戸㌲㈱㝣换㕤㉤捤㑣攳㕦㘲昶㜸㝡慡㔴㕥ㄳ㈲攴㥢㠵㉦摣慡〸㜴㜴ㅣ㜴愶㠲愰敥慣㜳敢㜴㘷づぢ慤ㅡ㐱㤸㜳㘶㠴㙤敢㑥㍣㙡挱㔹挴捥搹挶收㤰㔳ㄶ㙥㘰㠵搶㠶ㄵ㙥收㥤㘵っ㔴ㅢ㜶慥〴攲戲攱慥㡡ㄷっ㐷攴㥣㜳㜵慢搶慦㔲愶敦ぢ昱㄰挹㠹挹搵㤷愶〲㘷㘶捤昰攵㡣〲敥㑢ち散㥣㕦㙤㠵㝤愸晢戸㥣扡㝣〳挷㝣愴㍢ㅣ㕡慥ㅡ㝥〳㜲愲㍢㘴戴昸搶ㄹ㍣搱ㅤ㍥戱㐷慤㝤ㅥ敦摥㐷㙥㘵㉢戴㌶ㄸ㔱户摣㔱㉣㐶捦㌳ㅢ㘰㔶㘰㐶〴敡㐵㘶㠳捣㠶㤰㘹晤晦〲㡦㈴㍢戲㈹㕢㌱戲㤵㤵㙣愵㥡慤搴戲ㄵ㤱慤㤸搹捡㙡戶戲㤶慤㔸搹捡㉢搹捡㌵挰挴愹㌰㌰㤰㡤搲挷攲挲晢敦搹㝦㝣晥㠷ㅦ捦扦晤敦㑢晡㕦㠶昶〱攸㔲㌴愹㔹摦戸づ㔲㙢ㄲ昱昱搲㈴㝦戶㘷ち昰㠴㜹捡㝣捡㍣㜶慣㜶㙡搲㌸㘱攴戸慣ㄴ攴户㄰捡㝥挰づ㤹㉦㕡㙥捤扢㉥㜱㜷敦戴ㄱ㠸收挶㑤㐴㙤搳㕥摤慤〵昷㙣摤㔸づ㡤㔰摣摤摥搶ㅣ愴愳㕢ㄹ㙣㈵〲昹扥㈳敤摤慥ㅡ㜶㕤㑣摤戰㔴昳㝤㙤捤捥㤲敦慤㜴㙦㥤昳挵搷ㅡ慤ㅤ㌳㥡㠲㐸摢㤰㘳㜷慣㔲㌵愹㜹㡤捦慣㜹㠱㜰攵昴㈶㥣㈵慢㝡㑤昸㘵㐱㠱㈸㙡㜲愹〷搹ㄴ㜱晤挴愲㡢㠵㠲㕢㙢て㈶㙢捤戳㌷㐲㌰戳愸㘱扥敢挲て㌷㤷㡤ㄵ㕢ㅣ㙡〱㔱敦㐴挳攱㤶敡㌹慦㕡て㘶㍣㌷昴㍤扢戵㘵慡戶㘱㐰搲搴ㄶ扣㥡攸敦捦㐸愱〰㜱摢搷愷㘹㤹㉦㜶攷〵㠹㠸〴㡡挹挸㜷戵㤲㕤改㌲㔶㠷㔵搸㠲㌴㤹㝤㜸㥢挱㌸㕦㈹㘳㔲㌸㌰戱㈶㙡て扥昴戱㙤㠶㙤㘰敥昳〵捥㘶㐷愳搵㥦摤㄰㙥㜸摥㜰㙢戶昰㔳㜵㥦挶ㄹ改㈳挸㜲㌷㈱㄰扡敥ㅥㄵ㥤㜶㐳摢捣㕤户㙡攱㕡㝥㑤㔸慢㙢㈱敡愰ㅦぢ〵㙥㙤㐷搲敦㐰㤵㝥㠰搹㈸戲㘲㌱㤳ㅦ㈳㔰扥㠸㤴挹㔱㍡愵昰㜲㡢㈰㘷扦ㄶ㕥ㅥ㌲攷㉣㍢ㄴ㑡㈸㡦㤸挰㠸搲㙡ㄲ㝤挳㈴㔱摦愸㉡㠵㌱㘶捥㠰㑡つ换つ㌷㥢㝣摢挱㈵㡡㠸昶㘴挱慥㤳〵ㄴ〵慤昲㈰㠵搷㐰㌴㙤搲㈰ㅤ㌸㐱㐴㘴㠳ㄴ捤㡥㤱㕢㠹㡣昰㈹㌲〲昰㐹㈲㈴昴㘴㜷ㄹ㐱㘲敦㈴㔲㜶敡捡㡦㝢搲㙣㉢㑢㕥㐹戳㠳搸㌸晤㄰戳㍢㤹摤挵散㌰㌲敤㘳㐸㌸㑡㌹㤴㕢㤳㝥て㥥昵㝢㤹摤㠷っ昲㐹愷捣㠹㐴ㄵ㙤愸㥤搸㤱㠴ㅢ㠶㥤㉣㡤㘲㈵㡡㘸ㄹ㌷散捣㘱㐷㈲㍡戲㍡㜷㠷慥敤㤷㍡昶搱敥戴㤹㕣づ㈹㌲〵㌴戹搶㙤㐰㤳ㅢ㐱搰ㅥ昵搶晤攸慡㡦㌳㝢〰㤹㔲㉣㌴㜶㜷㘶捤搳㥣扣㉤㑣㈲㘵〸昵愸摣㈳㈲愶昹㥦㈲攰㍡㡥㉥㝢昶㌳㑤挱〹昳戶户㥦㡦㜶攷敤〸改㙤㍡㜳㑦攷搰㔳㜴㡢ㄶ昴㠳㘰㉦敤慦㕤昵换挳㘸搶ㅦ㘱昶㈸戲㌶晤挲㤳昷慤㝡〹愴㐹散㈴㌰㜷㠰ㅥㄷ㘹攱㉥㙦慥ぢ愹㝤㠶捣㘵挳㕦ㄵ㈱扣ㄷ昳戳戰㠳㍤摦ㄷ㌶づ戴㌵㔹挱戳换㥤慤㤵挱㥣敦㌹慣摦戳㡦㠳摢㐲㌱昴昷㘷晢㌲㙤昶㜱㡡㥤㤹昰㌷㈵㈸㠷晡昷㐴㜷㈱㤱攸搴㑡㕥散㤷㝥戶摣㤳㈴㍤㐸㤲挷戰慤晡攳挸㈰㈵戴㍦㜷㤵㈸ㄳ〴㍢㉡挱㕡慤㔵㝡昷㔲㑥㈶㙤晥挳づ㌹㌲愸㥣戵搳昰ㅤ〴挳㑥搹㜲ㅡ挲㘲搰㔹ㄲ㝥ㄵ㝥〵换ㄶ㐵攵㤲愵愸搹㤳ㄵ户㠹慣攸敢敢㌸㑢愷昸搶㈴㥤戴㐹㠹㔴㙥㑦㙤㑣㌹㠷㌷㠹㡡㉥㐸ち㤵ㄴ户㔰㐳〲㤱昲〸扢㈷㘲㝡㄰㌱㈵㙣㥣晥〴戳㐹㘶挷㤰攵晥〰㐹戳搳㡤㘷㈰㙣㘰㠳敥散㑡㈵㔳㈰ㅡ愴㝢昰挳慥挲敡㈴㕦㜳㡡搹㤳挸摡捣ㅦ㍡ㅦ㔳〸㔱愲㍣㐱㠸戴㤶㜴昳慡㈵慥㤳〶昶㤹〸㉡捤搴㠳搰㜳ㄸ㔵ㅡ㌶㘷扤ㄷ扣㜰搶ち搶ㄱ㠵ㅡ㌵愳挲㡢㙢挲〵㜵昹戰㝤摡敡扣昵㜵㔱搳捤戲㔷㠷㘸㥢㥦摤つ㠷㜲慣て戶愴㍣㤷㘷㌵愴摥捥挶ㄸ㐲㤳㈷㘲昸㕡改㠹摤㤱攷㥢㠷扥㤱收㡥㉥㕢愱㉤〶㑤挵㜴㉣ㄷ㑣散㈲愲〶戵〱㜳㜹捤ㄷ㘲㜶搸㍣攷㕢㌵摢㜲〵㤱〱ㅢ㤳㠱扡㡢㘲ㄵㄱ㠲㈵㡦昱㍦捦ㅤ㌶㤷㝤挳つ搶つ〶ㄳ㌷て戴㍣挹㤰㐸捥㥣戶摣〰慦㤱㔸㘴㜹挴㉣慦㜹搷ㄱ慢慤㍢敥㌹㘳㍤搸ㄵ㔸㈱搱慢㈴㔱愳㘵戵㙣㔶㉢㘴ぢ扤攲㠷〷昲㑣收㌸㝥晢㤹㐹㕣㘵㜲昴㤷愷㘸㙦摡昵㔱㝣㠶㜶㍡攷㌴㠴挸㔱愳戲㉦㔵ち㤳㔳昵愷搹攷ㄹ㘴昳攷慥捣㌷愳㜲㥦㈶㕡㥤愳㠳㍦㐵挴㑢慡㘸挴㐰攸㥥摢愷㈸㠵㜵㈴ㅣ㌰㈰㄰捥愷㜶敡㉢㥡ㄲ㠶挴户慦㔹㥣㐳㄰㘹挸扣㘸慣〸ㅢ愱㘸挷〸昷愹〷㕡戱㡥㘱〷㔱摢㡣攷㌸〶㈹㡢㔴㔹慥ㅡ㈴攰愹㝡攸㉤㔸慥㙥㈲㤳攴ㄷ㔵ㄹ㌷㔰㘵摣㤰㔵㐳收㘵㐶〵㘵㤹㘳㜹慢㠶㙦㠵㙢㡥㔵㉤昰㠱㤱扢㕤㐱㤲攰㜱ち摥㌸挵㈲㘳扣捤㤸扦〲㡢㉤㈸〱摢㈵㠸㔱㙥ㅤ戱て挲捤㙡㜹晣㘸㍤晡㤵㈰㕦愴㤳㔴㝦ㄶ愳攵攴戵〸㐸ㅣ㤹㙥挶㤷㉦㙥扥㡥ㅡ攵㤶㈳搶㔳㐸〴づ挱㠴㡣愷㜷㍢㙦㕥㜱慤㄰搸㈳挶收慣㜰㌶〰捡㤱愱㈸㑦户㜷㑢慣㈶㍡㑤㌴㤴挲晤㥤㑤㉤㕡攲㐸㘷㝢㔲㙤㍣扣㐵戳㔲㈸〹㍤戲ㅤ㤰㔴㉣㕢捣㜱㌷㘹ㅡ㑤敡敤㔸搹㘸㘹㕥搳收扥㔳㠸㝣ち扤㈴㘹㈶愳㥦㤶㠴㠲ㄸ㉦愹〳㉡㡡敥晡㜴昲㐸〴㙢㘸〲ㄴ愹愶㔴摤㜰ㄴつ㥣挷㡤㤳㥡㈸㐶㑦攰敦㝤㔱㜱戱ㅥ戶戴ㄸ㌷㐶愳㤶㈹摢㕥㜴㘱㈴㔴つ扦戶㑢㔸ㅡ㙢㔳ち㐶㜲㘷慦捡㕦㙤㙦㠲ㄱ㈳㌶㘴㐴㈴挵つっ㌶〴㜳㈵㠲愹㌴捥㠶戹搵㡤敡〲㥦ㄶ㠴攱㑡っ㤴挳摡慣搸㤰㔶㔸搳㤰ㅦ㤵ㅤㅡ㠷㐵㈹㐷㜵㜳㙡㈵㠰㐶て㈹挷愳㤲㘴㜰摤扣㑣慦ㄴ敥㉦㐰散㐶愵愵㙡㠸愸㙥㘳〰ㅥっ㜶て㜶戰㈳㉡㙡㐲攳㡣ㄲ㌴㥦㐲戸慤㡢㈰敦昴㠸㔱〸㔲㔳愶㝦㥥搱摥晡ㄱ搳㉦捥㘴攲㐲挴㐴㡣㜴愵ㄸて㐰㙥㌲㈸㐹㉥ㅡ㡤㘳攵㑡戲㐹愱㌵ㄴ搷搱挲ㄸ愶挵攷㠷戸挰挳㌰搶〸搹挶挶〵户搰㠲㌶戵㌷昷㤹昳㙥搵慥搷㠴㔴挵戱慣㤶ㅡ㜹㔷攰㑢摥晤㔳摣㤴戲㉦搱愶捣攳㈴挵㈵ㄳ㐹扤㥢摤晡㤷搰㕤ち㌹㡣愱㘴ㅢ㘳㡦㈹㕥㌹ㄹぢ敢戸愲㐰昳昰㐰昳敥㠲扣㌷〷㤱搶㔱㐵㔹㜶ㄱ㔷昱ㅡ〱㘴挹㙤〹戰㡢摥㐵㡦㈶㝢愲敡扣愵慡㜶〵㡥戰㑥㈵昰昲㜹ㄸ㈳㍤㜲〷〷挹摣㡣〲扢㌷㕦㤷㡦㤹㥢㘷㈲攳㐳㘳㜸㤷㠷愰っ㜶ㄵ㡣㐴㝢㍢摢㌴扡㌵〶㝥㘹㜸敢捦㈱搳ㄸ〱愶㐱ぢ㐸㘵攰㑣愳扣扤㠱挳㔸㘴㑡㜰㌴ㄹ㐷㘵㠸㜲ㄴ晥㝡㈰つ摣挴㜳昴戲〷㈵ㄴ㡥挹㍢㘱昱戵挴〹〷㈷㈰捦㍦搴㔶戹㘴㠴戸昹攲ㅥ㙥慢㥥慡搵㘸敥挲㍤户㉢戰㡡㕢ㅢ捡ㅣㅤ㙢扢㡦㈵搷㐴晢敥愱戶㠶攸㥥攰昱搹搲㜹㈳慣慥㤵挳㑤㜵㘷慢㔷㤲挸晤づ敥㠸㉤摦㑥㥢戹摦攵ㅤ搴つ敥㝤昱㥡敢㕤㜷攵扣㜲〱㉦晣搱㡡搵〷〶㌸挹㘲收ㄳ晣挸㤴捤攴㝥㡢ㄱ㜷㌲㙤づ搰昴㡦㜰ㅣ㤹㤴㌴ㄸ㐷㌹㠵㑥㘰扢㌷㉥っ㤰㑥挶摡攸㐴ち㠲㍤㐲㜱㔷㍦㌳㐲搱㝥〳戴㤲㔸搴㠹ㅣ㝢晥づ㔸㕦晢㌵㙡㠸㜰㍣㐷㘲㈴昷〰㑡㈹愸㤳㠲㍣扡摤挱扢㈰晦㍦㔸㡡戹㜹㑢㜶晡㉦㌰戳昶㐱㍢㡡㡥㄰㐵敦㜷愲㠸㜱搸㕢㡡㜸㜳昶㝢㐷捤捦晤㔶敦晦昰愸昹㍣㌰捣㈴慤㌱挴搴ㄸ㡢㙦ㄸ〳搹づ㘳攰ㄱ㌴㑢㘳攰〲晢㌰㕣慦㡣㠱挸摢戱㠰㡡敤㡤〱〶昱㔲㑣扥㐴㑣㌵攱挰攰㔹敢㤰㐳㑦搸㜹摣慥ㄵ〱〲昷㔰㑦挱っ㝣㑦㜷㜶㔶㉦ㄹ扥攱ㅣ㤶昵攷㝣〱戵攵㉦攳扡戶散挲ㅥ㜷㙦搹㈲㍢㙤攱㤵㠸摤改㝢㥥㤳㥤㕤㔲〷愶㔴㔲㝥㝡慤愰攵㍦㠵㑦㐴攳〹㈱昳摡搸㉦捦晤敤搵㌷捦昰㕡㕡㐴慢㌹挶㠱㝢㠹捤搳㜲㐰昴㌶㜱㈳攴㈰扦扥㔹挰㘷㐸搶扡㉤愶つ㕦摡㍢㠱敥挴㐵㐵㜸〹挲㔴挴户ㅢ㡣㐹㕣㜰㔰挶㘴愹捤戱㈹扦㕥㤲捥挰㔲㘲攲搲㝢ㄷ挷〷戵慥㉡慢㐷扢㌲昷ㅥ㤴捥㉤㑥愴搵ㅥ攴昹㤲㐹搳摥㙤搷㙡愷愸搵愴㤹愸㑤〰㈲㤶㔲〸㌴㤰㐲㤲㐷ㄶ㐶晥愵㤴㕡㐲㈱㔷㐲㤶ㄲ㐲㙢㡦攵昲攴扦㈷〴㐴攳㜶㕦㡦㕦慡㘰ㄷ㠱挵搸敢摥敢搹㤵㔶㘷慣㥡ㄸ㤳㤵愷㡦㑢㈸挸㘳ち㉢ㄸ愴㤵戵㤷㔱㠸㔳敥ㄸ㑡㍢㜶㍣昱㈵挳㡥㡡戰㈹挶捥㌹昴慡ㄵ㥤戳㙥ㅤ㔷㍣愰㘷昲㔲㘱戸〷㔸㡤愳愷っ挶㈹搰愲慡㘲㍥愲㡡㡤㑥㠳㔱ㄳ㜴㤶㝢ㄸ攷㑦㐴昹昸㌹㄰摢㈷㥡㐳ㅦ㙣㙦愱㡥㜳〷戰㐰晥挲晥㍡㤲挲搸㜸㉢㌹〶ㄲ㜶㐷㔰〵㜵〷扣㡣㉥搲㥥搷昴㘶㤱敦搲㌴〶愳㘳捥敡敢搴晦っ㔳㑢捥㕡㈶㌴攳搵㉤晡晦㉡㉡戶搵晦ㅡ㠳㙣ㄲ㘵㉦㐶〵㍥攴ㄸ㈹搹㌶㌸挳ㅤ㠱てㅢ㘱ㅡ㜹〴搶㘵㤱戱㙤㔵㉡攳晢㔴搵㉣㈵㌸㍣㕣晤敤㜷㈰ㅡ㝤㘹摢づ㜶ㄵ㠰㡣〲攵㝥づㄱ搴戵㍦㈷摤㜹㡥捤㝦ㄹ搵㘳ぢ㔶搵昷〲捦っ挷换㠸敥㡥昳〳㌳ㄳ㌶捦㤴昶㑥扢㔰㝢〸㍢㌱昴ㄲ晡㉣㉣㐲㘰扦㈰挲捦㈸攸挸㄰挲捥㐲ㄶ晣搶㘸㝦㈲㡥㐴攵㄰摣㘱㕥慡ㅢ㌶㍥㑦㕤㠴㔳㌳㘴搵慥搰㜵捡戵摣㝥ㄳ㠳㍢㠷扢㔸ㄷ攰昸ㄱ㜶〹㔱㌰戹㠴㤷㕥收戶戶敦㐱㉢㙣戴戶㠰㤰扤㌹搷㡡戹㥦〱愵㍢㝢㑢㉢挵昰㥤晣敡㔸㌹㍥攸ㄸ摤戹ㄷ㤶㈳㡤㠲挴愳捦戵改敤㥡戰攱㈳摢㐱㠴晢㘵㜴搵㥥㘳㠶㕦晤㉢㔱㠱てㅡ㕤㜹捦戲昰㌶㤶㐴摡㐷㌹㤳晦㉡戲敥〴晤㔳㠰戵戸〷㐸搰ㅡ㑦ㄵ愴挰愲昶ㄳ戴㜳㠷ㅡ㉢搵攴挹〱㙤㝡ㄵ㔹㥣㌴㥥ㅣ攴扢㝦っ攰挶扢〵㙡扢扦晢慤㉤摦㑤㥤㉦搷㤶ㅣ㝦㝦慣㌳昴㌵㌴敢ㄶ戳㔷㤸㕤㐳戶㍦㔶ㅤ㈳㤴㠶ㄴ㌱㜹ㄵ㍢昸攰っ捡㐸㝦㡡晥㝥㜴收挳摦㌳晤攳㡣㈶攵ㅦ㥡㕡㔷㐱昹㈷㔷昱㠳攴㉡㕣搴㜶㕦挵昷户㕡挵㝥㡡㐶捥㐴㕦㐷㌶摣愷㐹戴昱戹㘵㔵㐴㥦㠴昲㈵搴晥戸㌱挷㔵愶㝣㤵㈳㙤ㅥ摥㘲愴㈷㈶慦㕣愹㜹愵改ち㑥攴㐳摤ㄵっㅦ㜹扦扢㡡改㝣㡦昱㜹敤㝢昱慥㥦㍦ㅦ㝦昲㤴㡤㈲㐶挰扡戲㌲㐹㈵摣㐸敤扢㌱昰扢扦㙡㍡㍣搱㠰〴搲㔰挰愴㈶〹晣㥤ㄸ昸㌸㍥愷㤲㌰ㄹ挶晦㤹㍥㡡㠱㐹㜵ㄲ昸摢㌱昰摦㡦ㅦ㙥〰挷㐴ㄶ㠹〶㔲㐰㡡晤㉡㉤晡挴愷搵㍣㈸攷㑣敡挴㐱㔳㔵㔳ㅣ捡挰慦㉤戵攲㄰慥㜲昸昸戸昹㈲㉥㈶攱〲〷㈴愷晡㍦づ收㜱㘱㘹搶〸つ㝣扢扣㠱㔰戱慦换㈷㜶捥㥢㡢㍥㉡〶捣昹〰攷愴摡慥㈲ㄱ愸昸㝥戵扦摢戸搴㔳捣挱收㝥挴㈱慥㉣㙦㠰昴愶ㄱ㘴㔸愴㕦晢㔶㡣搹捣ㅢ㑤㥡搱㌷㠱ㅣ㜸㔹㤰戳㔰㔴㈱㤴㌱㍥㘸㘴㘱愲㍡晦ㅡ戲㤱昸㍦㤱ㄸ摦㤰㙥㡥慣昶㘶㍣㕥㤲㔲昴慦戳挳㌷㤰昵挱扦慡㐵㜴搶㌲㙥㡥慦摣昱摡㌹戳ㅥㄵ换ㅢ攸慡㜱㍥㝣愱晥㑤㍥扤挱㡣㑦戱㕣㐲㌹愳挹愶昶摡挱晦〰〵㤵搰㘱 | G30: 㜸〱敤㕣换㙦ㅢ挷ㄹ攷㔲㈲挵愵㈴换戱㘴㈷捥挳㔱㥥㑤㉡㠳㤱㕦㜹㈰㜰ㅤ㍤㈲㕢㡤ㄵ㈹愶散愰〸㔲㜶㐵捥㑡ㅢ敦㐳摤㕤捡㔶㠲㌶㈹㤰㐳搱挷愱攸愹㐱搱㌷㠲昶㔲㌴㍤ㄴ㑤摡㕥㝡㙥㡡㥥㜲㉢㤰㕥㝡㘹㔱ㄸ攸ㅦ㤰晥㝥㌳扢攴㤲ㄴ㔷㌲㤳戴㜴愱㤱㌵㥡㥤昹㘶㜶㘶扥攷㝣摦慣㌳㕡㈶㤳昹〸㠹㝦㤹〶㔹戸扢扣ㅤ㠴挲㈹捤㜹戶㉤慡愱攵戹㐱㘹挶昷㡤敤㡢㔶㄰づ〰㈰㕦戱搰ㅥ攴㉡㠱昵慡㈸㔴戶㠴ㅦ〰㈸㤷挹ㄴち㝡ㄶ敤ㅣ㠴扦〷攳〷㥤扤㐶〶㤱㤵攷㘶㤷搷㕥挱愸攵搰昳挵昱挹㉢慡敦搹㈷㑡愷㑡㈷愶愷ㅦ㉦㑤ㅦ㥦㥣慢摢㘱摤ㄷ㘷㕤㔱て㝤挳㍥㍥戹㔲㕦戳慤敡㜳㘲㝢搵扢㉡摣戳㘲㙤晡搴㥡㜱晡挹ㄳ愷捦㥣㌱㥦㝡敡挹ㄱ扣㌹戳㌴㌷扢攲ぢ㌳昸㘴㠶捣㜱挲愷攷㐵搵攲捡㠴昰㉤㜷扤㌴㌷㡢㝦㠹搹攳改㠹㔲㜹㐳㠸㤰㙦ㄶ扥㜰慢㈲搰搱㜱搸㤹〹㠲扡戳挹慤搳㥤〵㉣戴㙡〴㘱捥㤹ㄳ戶慤㍢昱愸〵㘷ㄹ㍢㘷ㅢ摢㈳㑥㔹戸㠱ㄵ㕡㕢㔶戸㥤㜷㔶㌱㔰㙤搴戹ㅣ㠸㑢㠶扢㉥㥥㌷ㅣ㤱㜳捥搷慤摡愰㑡㤹㠱捦挴㐳㈴㈷㈶㔷㕦㥡〹㥣戹つ挳㤷㌳ち戸㉦㈹戰ぢ㝥戵ㄵ昶㠱敥攳㜲敡昲つㅣ昳愱敥㜰㘸戹㘲昸つ挸愹敥㤰搱攲㕢㘷昰㔸㜷昸挴ㅥ戵昶㜹戴㝢ㅦ戹㤵慤搰摡㜰㐴摤㜲㐷戱ㄸ㍤捦㙣㠸㔹㠱ㄹㄱ愸ㄷ㤹つ㌳ㅢ㐱愶つ晥ㅢ㍣㤲散挸愶㙣挵挸㔶搶戲㤵㙡戶㔲换㔶㐴戶㘲㘶㉢敢搹捡㐶戶㘲㘵㉢慦㘴㉢㔷〱ㄳ愷挲搰㔰㌶㑡ㅦ搴㝦㜵扡㌸㌵扦昸摥㡦摥扦㘰晣昴㈷㝦ㅣ㌹〰愰ㄷ愲㐹捤晢挶㌵㤰㕡㤳㠸㑦㤶愶昹戳㍢㔳㠰㈷捣㌳收ㄳ收㠹ㄳ戵㌳搳挶㈹㈳挷㘵愵㈰扦㠵㔰づ〲㜶挴㝣搱㜲㙢摥㌵㠹扢扢㘷㡤㐰㌴㌷㙥㉡㙡㥢昵敡㙥㉤戸㙢攷挶㜲㘸㠴攲捥昶戶收㈰ㅤ摤捡㘰㉢ㄱ挸昷ㅤ㙢敦㜶挵戰敢㘲收扡愵㥡敦㘹㙢㜶㔶㝣㙦慤㝢敢㠲㉦扥摣㘸敤㤸搱っ㐴摡㤶ㅣ扢㘳㤵慡㐹捤㙢㜲㙥挳ぢ㠴㉢愷㌷攵慣㔸搵慢挲㉦ぢち㐴㔱㤳㑢㍤捣愶㠸敢愷㤶㕤㉣ㄴ摣㕡扢㍦㔹㙢㍥㝢㍤〴㌳㡢ㅡ收扢㈹晣㜰㝢搵㔸戳挵㤱ㄶ㄰昵㑥㌴ㅣ㙤愹㕥昰慡昵㘰捥㜳㐳摦戳㕢㕢㘶㙡㕢〶㈴㑤㙤挹慢㠹挱挱㡣ㄴち㄰户〳〳㥡㤶昹㙣㜷㕥㤰㠸㐸愰㤸㡣㝣㐷㉢搹㤵㉥㘱㜵㔸㠵㉤㐸㤳搹〷㜷ㄹ㡣昳㤵㌲㈶㠵〳ㄳ㙢愲昶攰㑢ㅦ搹㘵搸〶收㍥㕤攰㙣㜶㍣㕡晤戳㕢挲つ㉦ㄸ㙥捤ㄶ㝥慡敥搳㌸㈳㝤っ㔹敥〶〴㐲搷摤愳愲搳慥㙢摢戹㙢㔶㉤摣挸㙦〸㙢㝤㈳㐴ㅤ昴㘳愱挰慤敤㐸晡㙤愸搲て㌱ㅢ㐷㔶㉣㘶昲ㄳ〴捡ㄷ㤱㌲㌹㑡愷ㄴ㕥㙥ㄱ攴散搷挲换㈳收㠲㘵㠷㐲〹攵㌱ㄳㄸ㔱㕡㑤愲㙦㤴㈴敡ㅢ㔵愵㌰㈶捣㌹㔰愹㘱戹攱㜶㤳㙦㍢戸㐴ㄱ搱扥㉣攸㍢㔹㐰㔱搰㉡て㔲㜸つ㐴搳㈶つ搲㠱ㄳ㐴㐴㌶㐸搱散ㄸ戹㤵挸〸㥦㈲㈳〰㥦㈴㐲㐲㑦㜷㤷ㄱ㈴昶㑥㈲㘵愷慥晣戸㉦捤㜶戲攴㤵㌴㍢㡣㡤搳㡦㌰扢㥤搹ㅤ捣㡥㈲搳晥づ〹㐷㈹㠷㜲㙢搲敦挲戳㝥㌷戳㝢㤰㐱㍥改㤴㌹㤱愸愲つ戵ㄷ㍢㤲㜰愳戰㤳愵㔱慣㐴ㄱ㉤攳㠶㥤㌹敡㐸㐴㐷㔶㘷㝦攸摡㐱愹㘳ㅦ敥㑥㥢挹攵㤰㈲㔳㐰㤳㙢摤〵㌴戹ㄱ〴敤㔱㙦摤㡢慥晡㈴戳晢㤰㈹挵㐲㘳㜷㙦搶㍣捤挹㕢挲㈴㔲㠶㔰㡦捡㍤㈲㘲㥡晦㈹〲慥攳攸戲㙦㍦搳ㄴ㥣㌲㙦㜹晢昹㜸㜷摥㡥㤰摥愶㌳昷㜵づ㍤㐵㌷㘹㐱摦て昶搲晥摡㔵扦㍣㠸㘶晤㈱㘶て㈳㙢搳㉦㍣㜹摦慣㤷㐰㥡挴㑥〲㜳㠷攸㜱㤱ㄶ敥敡昶愶㤰摡㘷挴㕣㌵晣㜵ㄱ挲㝢戱㌸て㍢搸昳㝤㘱攳㐰㕢㤳ㄵ㍣扢摣摥㕡ㄹ㉣昸㥥挳晡㝤晢㌸戸㈵ㄴ挳攰㘰㜶㈰搳㘶ㅦ愷搸㤹〹㝦㔳㠲㜲愸㝦㑦㜵ㄷㄲ㠹㑥慤攴挵㝥改㘷换㝤㐹搲㠳㈴㜹〴摢慡㍦㡡っ㔲㐲晢愰慢㐴㤹㈲搸㜱〹搶㙡慤搲扢㤷㜲㌲㘹昳ㅦ㜶挸㤱㘱攵慣㥤㠵敦㈰ㄸ㜵捡㤶搳㄰ㄶ挳捥㡡昰慢昰㉢㔸戶㈸㉡㤷㉣㐵捤扥慣戸㐵㘴挵挰㐰挷㔹㍡挵户㈶改愴㑤㑡愴㜲㝢㙡㘳捡㌹扣㐹㔴㜴㐱㔲愸愴戸㠵ㅡㄲ㠸㤴㐷搸㝤ㄱ搳㠳㠸㈹㘱攳昴挷㤸㑤㌳㍢㠱㉣昷㘷㐸㥡扤㙥㍣〳㘱㐳㕢㜴㘷㔷㉡㤹〲搱㈰摤㠳敦㜷ㄵ㔶愷昹㥡㌳捣ㅥ㐷搶㘶晥搰昹㤸㐲㠸ㄲ攵〹㐲愴戵愴㥢㔷㉣㜱㡤㌴㜰挰㐴㔰㘹慥ㅥ㠴㥥挳愸搲愸㌹敦㍤敦㠵昳㔶戰㠹㈸搴戸ㄹㄵ㕥摣㄰㉥愸换㠷敤搳㔶攷㙤㙥㡡㥡㙥㤶扤㍡㐴摢攲㝣㍦ㅣ捡戱㍥搸㤲昲㕣㥥搵㤰㝡㍢ㅢ㘳〸㑤㥥㠸攱㙢愵㈷㜶㑦㥥㙦ㅥ晡挶㥡㍢扡㙡㠵戶ㄸ㌶ㄵ搳戱㕣㌰戱㡢㠸ㅡ搴㠶捣搵つ㕦㠸昹㔱昳扣㙦搵㙣换ㄵ㐴〶㙣㑣〶敡㉥㡡㜵㐴〸㔶㍣挶晦㍣㜷搴㕣昵つ㌷搸㌴ㄸ㑣摣㍥搴昲㈴㐳㈲㌹㜳搶㜲〳扣㐶㘲㤱攵㌱戳扣攱㕤㐳慣戶敥戸攷㡤捤愰㉦戰㐲愲㔷㐹愲㐶换㙡搹慣㔶挸ㄶ㝡挵てて攴㤹捣㐹晣づ㌲㤳戸捡攴攸㉦㑦搱摥戴敢愳昸っ敤㜴捥㘹〴㤱愳㐶攵㐰慡ㄴ㈶愷敡㑦戲捦㔳挸ㄶ捦㕦㕥㙣㐶攵㍥㑥戴㍡㐷〷㝦㡡㠸㤷㔴搱㠸㠱搰㍤㜷㐰㔱ち敢㐸㌸㘰㐰㈰㥣㑦敤搴㔷㌴㈵っ㠹敦㐰戳戸㠰㈰搲㠸㜹搱㔸ㄳ㌶㐲搱㡥ㄱㅥ㔰て戴㘲ㅤ挳づ愲戶㌹捦㜱っ㔲ㄶ愹戲㕣㌵㐸挰㌳昵搰㕢戲㕣摤㐴㈶挹㉦慡㌲慥愳捡戸㉥慢㐶捣㑢㡣ち捡㌲挷昲搶つ摦ち㌷ㅣ慢㕡攰〳㈳㜷㝤㐱㤲攰㜱ち摥㌸挵㈲㘳戲捤㤸扦っ㡢㉤㈸〱摢㈵㠸㔱㙥ㅤ戱て挲捤㙡㜹晣㘸㍤晡㤵㈰㕦愴㤳㔴㝦ㅡ愳攵攴戵〸㐸ㅣ㤹㙥挴㤷㉦㙥扣㡥ㅡ攵㤶㈳搶㔳㐸〴づ挱㠴㡣愷㜷㍢㙦㕥㜶慤㄰搸㈳挶ㄶ慣㜰㍥〰捡㤱愱㈸㑦户㜷㑡慣㈶㍡㑤㌵㤴挲扤㥤㑤㉤㕡攲㔸㘷㝢㔲㙤㍣戸㐳戳㔲㈸〹㍤戲ㅢ㤰㔴㉣㍢捣戱㥦㌴㡤㈶昵㜶慣㙣戴㌴慦㘹㜳摦㈹㐴㍥㠶㕥㤲㌴㤳搱捦㑡㐲㐱㡣㤷搴〱ㄵ㐵㜷㝤㍡㜹㈴㠲㌵㌴〱㡡㔴㔳慡㙥㌴㡡〶㉥攲挶㐹㑤ㄴ愳㈷昰昷㠱愸戸㕣て㕢㕡㡣敢攳㔱换㡣㙤㉦扢㌰ㄲ慡㠶㕦敢ㄳ㤶挶摡㤴㠲㤱摣搹慢昲㔷摢㥢㘰挴㠸つㄹㄱ㐹㜱〳㠳つ挱㕣㠹㘰㉡㡤戳㔱㙥㜵愳扡挰愷㈵㘱戸ㄲ〳攵戰㌶㉦戶愴ㄵ搶㌴攴挷㘵㠷挶㘱㔱捡㔱摤㥣㔹ぢ愰搱㐳捡昱愸㈴ㄹ㕣㌷㉦搱㉢㠵晢ぢ㄰扢㔱㘹愵ㅡ㈲慡摢ㄸ㠰〷㠳晥挱づ㜶㐴㐵㑤㘸㥣㔱㠲收㔳〸户㜵ㄱ攴㥤ㅥ㌱ち㐱㙡捡昴慦㜳摡㕢摦㘳晡挵戹㑣㕣㠸㤸㠸㤱慥ㄴ攳〱挸㑤〶㈵挹㐵攳㜱慣㕣㐹㌶㈹戴㐶攲㍡㕡ㄸ愳戴昸晣㄰ㄷ㜸ㄸ挶ㅡ㈳摢搸戸攰ㄶ㕡搰愶昶昶〱㜳搱慤摡昵㥡㤰慡㌸㤶搵㔲㈳昷〵扥攴摤㍦挵㑤㈹晢ㄲ㙤捡㈲㑥㔲㕣㌲㤱搴扢搹慤㝦づ摤愵㤰挳ㄸ㑡戶㌱昶㤸攲㤵㤳戱戰㡥㉢ち㌴てて㌵敦㉥挸㝢㜳㄰㘹ㅤ㔵㤴㘵ㄷ㜱ㄵ慦ㄱ㐰㤶摣㤶〰扢攸㕤昴㘸戲㈷慡㉥㔸慡慡㉦㜰㠴㜵㉡㠱㤷捦挳ㄸ改㤱㍢㌸㐸收㐶ㄴ搸扤昱扡㝣捣摣㌸ㄷㄹㅦㅡ挳扢㍣〴㘵戰慢㘰㈴摡摢搹愶搱慤㌱昰㑢挳㕢㝦〶㤹挶〸㌰つ㕡㐰㉡〳㘷ㄶ攵摤つㅣ挶㈲㔳㠲愳挹㌸㉡㐳㤴攳昰搷〳㘹攰㈶㥥愳㔷㍤㈸愱㜰㐲摥〹㡢慦㈵㑥㌹㌸〱㜹晥㤱戶捡ㄵ㈳挴捤ㄷ昷㘸㕢昵㑣慤㐶㜳ㄷ敥戹扥挰㉡㙥㙤㈸㜳㜴愲敤㍥㤶㕣ㄳ敤扢〷摡ㅡ愲㝢㠲㈷攷㑢ㄷ㡣戰扡㔱づ户搵㥤慤㕥㐹㈲昷〷戸㈳㜶㝣㍢㙤收㐱㤷㜷㔰户戸昷挵慢慥㜷捤㤵昳捡〵扣昰㐷㉢㔶ㅦㅡ攲㈴㡢㤹㡦昰㈳㔳㌶㤳晢㍤㐶摣换戴㌹㐰搳㍦挲㜱㘴㔲搲㘰ㄲ攵ㄴ㍡㠱敤摥戸㌰㐰㍡㤹㘸愳ㄳ㈹〸昶〹挵㕤晦挴〸㐵晢ㅤ搰㑡㘲㔱㈷㜲散昹摢㘰㝤敤㍤搴㄰攱㜸㡥挴㐸敥㍥㤴㔲㔰㈷〵㜹㜴扢㠳㜷㐱晥㝦戰ㄴ㜳昳㡥散昴㕦㘰㘶敤摤㜶ㄴㅤ㈳㡡㝥摢㠹㈲挶㘱㙦㉡攲捤搹敦ㅦ㌵㍦昵㕢扤晦挳愳收攷㠱㘱㈶㘹㡤㈱愶挶㔸㝣挳ㄸ挸㜶ㄸ〳て愱㔹ㅡ〳捦戱て挳昵捡ㄸ㠸扣ㅤ㑢愸搸摤ㄸ㘰㄰㉦挵攴㑢挴㔴ㄳづっ㥥戵㡥㌸昴㠴㕤挰敤㕡ㄱ㈰㜰て昵ㄴ捣挱昷㜴㝢㘷昵㡡攱ㅢ捥㔱㔹㝦摥ㄷ㔰㕢晥㉡慥㙢换㉥散㜱攷㡥㉤戲搳づ㕥㠹搸㥤扥敦㌹搹摢㈵㜵㘰㑡㈵攵愷搷ち㕡晥㘳昸㐴㌴㥥㄰㌲慦㑤晣昲晣摦㕥㝤昳ㅣ慦愵㐵戴㥡㘳ㅣ戸㤷搸㍣㉤〷㐴㙦ㄳ㌷㐲づ昳敢㥢㈵㝣㠶㘴㙤摡㘲搶昰愵扤ㄳ攸㑥㕣㔴㠴㤷㈰㑣㐵㝣晤㘰㑣攲㠲㠳㌲㈶㑢㙤㡥㑤昹昵㤲㜴〶㤶ㄲㄳ㤷摥扢㌸㍥愸㜵㔵㔹㍤摡㤵戹㕦㐳改摣攴㐴㕡敤㐱㥥㉦㤹㌴敤㥤㜶慤㜶㠶㕡㑤㥡㠹摡ㄴ㈰㘲㈹㠵㐰〳㈹㈴㜹㘴㘱攴㕦㑡愹ㄵㄴ㜲㈵㘴㈹㈱戴昶㔸㉥㑦晥晢㐲㐰㌴㙥昷昵昸愵ち㜶ㄱ㔸㡣扤敥扤㥥㕤㘹㜵挶慡㠹㌱㔹㜹晡㜸〱〵㜹㑣㘱〵㠳戴戲昶ㄲち㜱捡㥤㐰㘹捦㡥㈷扥㘴搴㔱ㄱ㌶挵搸㌹㠷㕥戵愲昳慣㕢挷ㄵて攸㤹扣㔴ㄸ敥㈱㔶攳攸㈹㠳㜱ち戴愸慡㤸㡦愹㘲愳搳㜰搴〴㥤攵ㅥ挵昹ㄳ㔱㍥㝥づ挴昶愹收搰㠷摢㕢愸攳摣㈱㉣㤰扦戰扦㡥愵㌰㌶摥㑡㡥㠱㠴摤ㄳ㔴㐱摤〱㉦愳㡢戴攷㌵扤㔹攴扢㌴㡤挱攸㤸戳〶㍡昵㍦挳搴㤲戳㔶〹捤㜸㜵㡢晥扦㠲㡡㕤昵扦挶㈰㥢㐴搹㡢㔱㠱て㌹㐶㑡㜶つ捥㜰㐷攰挳㐶㤸㐶ㅥ㠱㜵㔹㘴㙣㕢㤵捡昸㍥㔵㌵㑢〹づて搷㘰晢ㅤ㠸㐶㕦摡戶挳㕤〵㈰愳㐰戹㥦㐳〴㜵敤捦㐹㜷㥥㘳昳㕦㐰昵挴㤲㔵昵扤挰㌳挳挹㌲愲扢㤳晣挰捣㠴捤㌳愳扤摤㉥搴ㅥ挰㑥㡣扣㠴㍥㑢换㄰搸捦㡢昰ㄳち㍡㌲㠴戰户㤰〵扦㌵㍡㤸㠸㈳㔱㌹〴户㤹㉦搴つㅢ㥦愷㉥挳愹ㄹ戲慡㉦㜴㥤㜲㉤户摦挴攰捥攱㉥搶㜳㜰晣〸扢㠴㈸㤸㕣挲㑢㉦㜳㕢摢昷愰ㄵ㌶㕡㕢㐰挸摥㥣㙢挵摣捦㠰搲扤扤愵㤵㘲昸㑥㝥㜵慣ㅣㅦ㜴㡣敥摤ぢ换㤱挶㐱攲搱攷摡昴㜶㑤搹昰㤱敤㈱挲晤㌲扡㙡捦㌰挳慦晥挵愸挰〷㡤慥扣愷㔹昸㌱㤶㐴摡㐷㌹㤳晦ㄲ戲敥〴晤㐳㠰戵戸〷㐸搰ㅡ㑦ㄵ愴挰愲昶〳戴㜳㠷ㅡ㉢搵攴挹〱㙤㝡ㄵ㔹㥣㌴㥥ㅣ攴扢扦て攰挶扢〵㙡扢扦晢慤ㅤ摦㑤㥤㉦搷㤶ㅣ晦㘰慣㌳昴つ㌴敢ㄶ戳㔷㤸㕤㐵㜶㌰㔶ㅤ㘳㤴㠶ㄴ㌱㜹ㄵ㍢㜸昷ㅣ捡㐸㝦㠹晥㝥㜸敥晤㍦㌱晤昳㥣㈶攵ㅦ㥡㕡㔷㐱昹㈷㔷昱摤攴㉡㕣搴㜶㕦挵㜷㜶㕡挵㐱㡡㐶捥㐴摦㐴㌶㍡愰㐹戴昱戹㘵㔵㐴㥦㠴昲㈵搴挱戸㌱挷㔵愶㝣㤵㈳㙤ㅥ摥㘲愴㈷㈶慦㕣愹㜹愵改ち㑥攴㐳敤ぢ㠶㡦扣摦㕤挵㜴扥挷昸扣昶敤㜸搷㉦㕣㠸㍦㜹捡㐶ㄱ㈳㘰㕤㔹㤹愴ㄲ㙥愴昶慤ㄸ昸㥤摦㌴ㅤ㥥㘸㐰〲㘹㈸㘰㔲㤳〴晥㘶っ㝣ㄲ㥦㔳㐹㤸っ攳晦㑣ㅦ挶挰愴㍡〹晣㡤ㄸ昸ㅦ㈷㡦㌶㠰㘳㈲㡢㐴〳㈹㈰挵㝥㤵ㄶ㝤攲搳㙡ㅥ㤴㜳㈶㜵攲戰愹慡㈹づ㘵攰搷㤶㕡㜱〴㔷㌹㝣㝣摣㝣ㄱㄷ㤳㜰㠱〳㤲㔳晤ㅦ〷㡢戸戰㌴㙦㠴〶扥㕤摥㐲愸搸搷攵ㄳ㍢攷捤㘵ㅦㄵ㐳收㘲㠰㜳㔲慤慦㐸〴㉡㝥㔰敤敦㉥㉥昵ㄴ㜳戰戹ㅦ㜱㠸㉢换ㅢ㈰扤㘹〴ㄹㄶㄹ搴扥ㅥ㘳㌶昳㐶㤳㘶昴㙤㈰〷㕥ㄶ攴㉣ㄴ㔵〸㘵㠲てㅡ㔹㤸愸捥扦㠶㙣㉣晥㑦㈴㈶户愴㥢㈳慢扤ㄹ㡦㤷愴ㄴ晤㉢散昰㔵㘴〳昰慦㙡ㄱ㥤戵㡣㥢攳㉢昷扣㜶捥慣㐷挵昲〶扡㙡㥣て㕦愸㝦㡤㑦㙦㌰攳㔳㉣㤷㔰捥㘸戲愹扤㜶昸㍦扤摡捦づ | H30: 㜸〱敤㕣摢㙦ㅣ㔷ㄹ摦㔹㝢搷㍢㙢㍢㜶㘳㈷㙤搲㌶㜵慦戴㌸摡㍡户㕥㔴㠵搴㤷㍡㜱ㅢ挷㙥搶㐹㠵慡戲㡣㜷捦搸搳捣挵捣捣㍡㜱㉢㘸㤱晡㠰戸㍣㈰㥥愸㠰ち〹㉡㄰ㄲ㔲㜹㐰㉤㤷㍦〰㠹㈲㥥㜸㐳㉡㉦扣㠰㔰㈴晥㠰昲晢㥤㌳戳㍢扢敢ㅤ㍢摢ㄶㅣ攴攳昸昸捣㌹摦㌹㜳捥昹慥攷晢捥㈴愳㘵㌲㤹㡦㤱昸㤷愹㥦㠵㝢捡㕢㐱㈸㥣搲慣㘷摢愲ㅡ㕡㥥ㅢ㤴愶㝤摦搸扡㘸〵㘱ㅦ〰昲ㄵぢ敤㐱慥ㄲ㔸慦㠹㐲㘵㔳昸〱㠰㜲㤹㑣愱愰㘷搱捥㐱昸㍢ㅡ㍦攸散㌵搴㡦慣㍣㍢戳戴晡㉡㐶㉤㠷㥥㉦㡥㑦㕣㔵㝤捦㍥㔹㍡㔵㍡㌱㌵昵㐴㘹敡昸挴㙣摤づ敢扥㌸敢㡡㝡攸ㅢ昶昱㠹攵晡慡㙤㔵㕦㄰㕢㉢摥㌵攱㥥ㄵ慢㔳愷㔶㡤搳㑦㥤㌸㝤收㡣昹昴搳㑦つ攱捤㤹挵搹㤹㘵㕦㤸挱愷㌳㘴㡥ㄳ㍥㍤㈷慡ㄶ㔷㈶㠴㙦戹㙢愵搹ㄹ晣㑢捣ㅥ㑦㑦㤶捡敢㐲㠴㝣戳昰㠵㕢ㄵ㠱㡥㡥㠳捥㜴㄰搴㥤つ㙥㥤敥捣㘳愱㔵㈳〸㜳捥慣戰㙤摤㠹㐷㉤㌸㑢搸㌹摢搸ㅡ㜲捡挲つ慣搰摡戴挲慤扣戳㠲㠱㙡挳捥㤵㐰㕣㌶摣㌵㜱挹㜰㐴捥㌹㕦户㙡晤㉡㘵晡㍥ㄷて㤱㥣㤸㕣㝤㘹㍡㜰㘶搷つ㕦捥㈸攰扥愴挰捥晢搵㔶搸〷扢㡦换愹换㌷㜰捣㠷扢挳愱攵慡攱㌷㈰㈷扢㐳㐶㡢㙦㥤挱攳摤攱ㄳ㝢搴摡攷戱敥㝤攴㔶戶㐲㙢㠳ㄱ㜵换ㅤ挵㘲昴㍣戳〱㘶〵㘶㐴愰㕥㘴㌶挸㙣〸㤹搶晦㙦昰㐸戲㈳㥢戲ㄵ㈳㕢㔹捤㔶慡搹㑡㉤㕢ㄱ搹㡡㤹慤慣㘵㉢敢搹㡡㤵慤扣㥡慤㕣〳㑣㥣ち〳〳搹㈸晤昰晤㑢摦㕡㍥昸晣昳㍦晤挳㤹愳扦㜸挳㝢㘷攸〰㠰㕥㡣㈶㌵攷ㅢ搷㐱㙡㑤㈲㍥㔹㥡攲捦捥㑣〱㥥㌰捦㤸㑦㥡㈷㑥搴捥㑣ㄹ愷㡣ㅣ㤷㤵㠲晣ㄶ㐲ㄹ〵散㤰昹㤲攵搶扣敢ㄲ㜷昷捣ㄸ㠱㘸㙥摣㘴搴㌶攳搵摤㕡㜰昷昶㡤攵搰〸挵搱昶戶收㈰ㅤ摤捡㘰㉢ㄱ挸昷ㅤ㙢敦㜶搵戰敢㘲晡㠶愵㥡敦㙤㙢㜶㤶㝤㙦戵㝢敢扣㉦扥搲㘸敤㤸搱㌴㐴摡愶ㅣ扢㘳㤵慡㐹捤㙢㘲㜶摤ぢ㠴㉢愷㌷改㉣㕢搵㙢挲㉦ぢち㐴㔱㤳㑢㍤挴愶㠸敢㈷㤷㕣㉣ㄴ摣㕡㝢㈰㔹㙢㍥㜷㈳〴㌳㡢ㅡ收扢㈱晣㜰㙢挵㔸戵挵攱ㄶ㄰昵㑥㌴ㅣ㘹愹㥥昷慡昵㘰搶㜳㐳摦戳㕢㕢愶㙢㥢〶㈴㑤㙤搱慢㠹晥晥㡣ㄴち㄰户㝤㝤㥡㤶昹㝣㜷㕥㤰㠸㐸愰㤸㡣㝣㔷㉢搹㤵㉥㘳㜵㔸㠵㉤㐸㤳搹㠷㜶ㄸ㡣昳㤵㌲㈶㠵〳ㄳ㙢愲昶攰㑢ㅦ摤㘱搸〶收㍥㕢攰㙣㜶㉣㕡晤㜳㥢挲つ㉦ㄸ㙥捤ㄶ㝥慡敥搳㌸㈳㝤〴㔹敥㈶〴㐲搷摤愳愲搳㙥㘸㕢戹敢㔶㉤㕣捦慦ぢ㙢㙤㍤㐴ㅤ昴㘳愱挰慤敤㐸晡ㅤ愸搲て㌲ㅢ㐳㔶㉣㘶昲攳〴捡ㄷ㤱㌲㌹㑡愷ㄴ㕥㙥ㄱ攴散搷挲换㐳收扣㘵㠷㐲〹攵ㄱㄳㄸ㔱㕡㑤愲㙦㤸㈴敡ㅢ㔵愵㌰挶捤㔹㔰愹㘱戹攱㔶㤳㙦㍢戸㐴ㄱ搱扥㉣搸㜳戲㠰愲愰㔵ㅥ愴昰ㅡ㠸愶㑤ㅡ愴〳㈷㠸㠸㙣㤰愲搹㌱㜲㉢㤱ㄱ㍥㐵㐶〰㍥㐹㠴㠴㥥敡㉥㈳㐸散㥤㐴捡㑥㕤昹㜱㕦㥡㙤㘷挹㉢㘹㜶〸ㅢ愷ㅦ㘶㜶㈷戳扢㤸ㅤ㐱愶晤ㅤㄲ㡥㔲づ攵搶愴摦㡤㘷晤ㅥ㘶昷㈲㠳㝣搲㈹㜳㈲㔱㐵ㅢ㙡㌷㜶㈴攱㠶㘱㈷㑢愳㔸㠹㈲㕡挶つ㍢㜳搸㤱㠸㡥慣捥扤愱㙢晢愵㡥㝤愴㍢㙤㈶㤷㐳㡡㑣〱㑤慥㜵〷搰攴㐶㄰戴㐷扤㜵ㅦ扡敡ㄳ捣敥㐷愶ㄴぢ㡤摤摤㔹昳㌴㈷㙦ぢ㤳㐸ㄹ㐲㍤㉡昷㠸㠸㘹晥愷〸戸㡥愳换扥晤㑣㔳㜰搲扣敤敤攷攳摤㜹㍢㐲㝡㥢捥摣搷㌹昴ㄴ摤愲〵晤〰搸㑢晢㙢㔷晤昲㄰㥡昵㠷㤹㍤㠲慣㑤扦昰攴㝤慢㕥〲㘹ㄲ㍢〹捣ㅤ愴挷㐵㕡戸㉢㕢ㅢ㐲㙡㥦㈱㜳挵昰搷㐴〸敦挵挲ㅣ散㘰捦昷㠵㡤〳㙤㑤㔶昰散㜲㘷㙢㘵㌰敦㝢づ敢昷敤攳攰戶㔰っ晤晤搹扥㑣㥢㝤㥣㘲㘷㈶晣㑤〹捡愱晥㍤搵㕤㐸㈴㍡戵㤲ㄷ晢愵㥦㉤昷㈵㐹て㤲攴㔱㙣慢晥ㄸ㌲㐸〹敤㉦㕤㈵捡㈴挱㡥㑢戰㔶㙢㤵摥扤㤴㤳㐹㥢晦戰㐳㡥っ㉡㘷敤っ㝣〷挱戰㔳戶㥣㠶戰ㄸ㜴㤶㠵㕦㠵㕦挱戲㐵㔱戹㘴㈹㙡昶㘵挵㙤㈲㉢晡晡㍡捥搲㈹扥㌵㐹㈷㙤㔲㈲㤵摢㔳ㅢ㔳捥攱㑤愲愲ぢ㤲㐲㈵挵㉤搴㤰㐰愴㍣挲敥㡢㤸ㅥ㐴㑣〹ㅢ愷㍦捥㙣㡡搹〹㘴戹㍦㐱搲散㜶攳ㄹ〸ㅢ搸愴㍢扢㔲挹ㄴ㠸〶改ㅥ晣戰慢戰㍡捤搷㥣㘱昶〴戲㌶昳㠷捥挷ㄴ㐲㤴㈸㑦㄰㈲慤㈵摤扣㙡㠹敢愴㠱〳㈶㠲㑡戳昵㈰昴ㅣ㐶㤵㠶捤㌹敦㤲ㄷ捥㔹挱〶愲㔰㘳㘶㔴㜸㘹㕤戸愰㉥ㅦ戶㑦㕢㥤户戱㈱㙡扡㔹昶敡㄰㙤ぢ㜳㝢攱㔰㡥昵挱㤶㤴攷昲慣㠶搴摢搹ㄸ㐳㘸昲㐴っ㕦㉢㍤戱扢昲㝣昳搰㌷搲摣搱ㄵ㉢戴挵愰愹㤸㡥攵㠲㠹㕤㐴搴愰㌶㘰慥慣晢㐲捣つ㥢攷㝤慢㘶㕢慥㈰㌲㘰㘳㌲㔰㜷㔱慣㈱㐲戰散㌱晥攷戹挳收㡡㙦戸挱㠶挱㘰攲搶挱㤶㈷ㄹㄲ挹㤹㌳㤶ㅢ攰㌵ㄲ㡢㉣㡦㤸攵㜵敦㍡㘲戵㜵挷㍤㙦㙣〴㝢〲㉢㈴㝡㤵㈴㙡戴慣㤶捤㙡㠵㙣愱㔷晣昰㐰㥥挹㥣挴㙦㍦㌳㠹慢㑣㡥晥昲ㄴ敤㑤扢㍥㡡捦搰㑥攷㥣㠶㄰㌹㙡㔴昶愵㑡㘱㜲慡晥ㄴ晢㍣㡤㙣攱晣㤵㠵㘶㔴敥㤳㐴慢㜳㜴昰愷㠸㜸㐹ㄵ㡤ㄸ〸摤㜳〷ㄴ愵戰㡥㠴〳〶〴挲昹搴㑥㝤㐵㔳挲㤰昸づ㌴㡢昳〸㈲つ㤹ㄷ㡤㔵㘱㈳ㄴ敤ㄸ攱〱昵㐰㉢搶㌱散㈰㙡㥢昵ㅣ挷㈰㘵㤱㉡换㔵㠳〴㍣㕤て扤㐵换搵㑤㘴㤲晣愲㉡攳〶慡㡣ㅢ戲㙡挸扣捣愸愰㉣㜳㉣㙦捤昰慤㜰摤戱慡〵㍥㌰㜲户㈷㐸ㄲ㍣㑥挱ㅢ愷㔸㘴㑣戴ㄹ昳㔷㘰戱〵㈵㘰扢〴㌱捡慤㈳昶㐱戸㔹㉤㡦ㅦ慤㐷扦ㄲ攴㡢㜴㤲敡捦㘰戴㥣扣ㄶ〱㠹㈳搳捤昸昲挵捤㌷㔰愳摣㜲挴㝡ち㠹挰㈱㤸㤰昱昴㙥攷捤㉢慥ㄵ〲㝢挴搸扣ㄵ捥〵㐰㌹㌲ㄴ攵改昶愸挴㙡愲搳㘴㐳㈹摣搷搹搴愲㈵㡥㜵戶㈷搵挶㐳摢㌴㉢㠵㤲搰㈳㍢〱㐹挵戲捤ㅣ昷㤲愶搱愴摥㡥㤵㡤㤶收㌵㙤敥㍢㠵挸㈷搰㑢㤲㘶㌲晡㔹㐹㈸㠸昱㤲㍡愰愲攸慥㑦㈷㡦㐴戰㠶㈶㐰㤱㙡㑡搵つ㐷搱挰〵摣㌸愹㠹㘲昴〴晥㍥㄰ㄵ㤷敡㘱㑢㡢㜱㘳㉣㙡㤹戶敤㈵ㄷ㐶㐲搵昰㙢㝢㠴愵戱㌶愵㘰㈴㜷昶慡晣搵昶㈶ㄸ㌱㘲㐳㐶㐴㔲摣挰㘰㐳㌰㔷㈲㤸㑡攳㙣㤸㕢摤愸㉥昰㘹㔱ㄸ慥挴㐰㌹慣捤㠹㑤㘹㠵㌵つ昹㌱搹愱㜱㔸㤴㜲㔴㌷愷㔷〳㘸昴㤰㜲㍣㉡㐹〶搷捤换昴㑡攱晥〲挴㙥㔴㕡慥㠶㠸敡㌶〶攰挱㘰敦㘰〷㍢愲愲㈶㌴捥㈸㐱昳㈹㠴摢扡〸昲㑥㡦ㄸ㠵㈰㌵㘵晡搷㌹敤敤敦㌳晤晣㕣㈶㉥㐴㑣挴㐸㔷㡡昱〰攴㈶㠳㤲攴愲戱㌸㔶慥㈴㥢ㄴ㕡㐳㜱ㅤ㉤㡣㘱㕡㝣㝥㠸ぢ㍣っ㘳㡤㤰㙤㙣㕣㜰ぢ㉤㘸㔳㝢敢㠰戹攰㔶敤㝡㑤㐸㔵ㅣ换㙡愹㤱昷〴扥攴摤㍦挵㑤㈹晢ㄲ㙤捡〲㑥㔲㕣㌲㤱搴扢搹慤㝦〱摤愵㤰挳ㄸ㑡戶㌱昶㤸攲㤵㤳戱戰㡥㉢ち㌴てて㌶敦㉥挸㝢㜳㄰㘹ㅤ㔵㤴㘵ㄷ㜱ㄵ慦ㄱ㐰㤶摣㤶〰扢攸㕤昴㘸戲㈷慡㉥㔸慡㙡㑦攰〸敢㔴〲㉦㥦㠷㌱搲㈳㜷㜰㤰捣捤㈸戰㝢昳つ昹㤸戹㜹㉥㌲㍥㌴㠶㜷㜹〸捡㘰㔷挱㐸戴户戳㑤愳㕢㘳攰㤷㠶户晥㉣㌲㡤ㄱ㘰ㅡ戴㠰㔴〶捥っ捡㍢ㅢ㌸㡣㐵愶〴㐷㤳㜱㔴㠶㈸挷攰慦〷搲挰㑤㍣㐷慦㜸㔰㐲攱戸扣ㄳㄶ㕦㑢㥣㜴㜰〲昲晣挳㙤㤵换㐶㠸㥢㉦敥㤱戶敡改㕡㡤收㉥摣㜳㝢〲慢戸戵愱捣搱昱戶晢㔸㜲㑤戴敦ㅥ㙣㙢㠸敥〹㥥㥣㉢㕤㌰挲敡㝡㌹摣㔲㜷戶㝡㈵㠹摣敦攱㡥搸昶敤戴㤹晢㕤摥㐱摤攴摥ㄷ慦戹摥㜵㔷捥㉢ㄷ昰挲ㅦ慤㔸㝤㘰㠰㤳㉣㘶㍥挶㡦㑣搹㑣敥㜷ㄸ㜱㌷搳收〰㑤晦〸挷㤱㐹㐹㠳〹㤴㔳攸〴戶㝢攳挲〰改㘴扣㡤㑥愴㈰搸㈷ㄴ㜷敤㔳㈳ㄴ敤户㐰㉢㠹㐵㥤挸戱攷敦㠲昵戵摦愰㠶〸挷㜳㈴㐶㜲昷愳㤴㠲㍡㈹挸愳摢ㅤ扣ぢ昲晦㠳愵㤸㥢户㘵愷晦〲㌳㙢ㅦ戴愳攸ㄸ㔱昴㝥㈷㡡ㄸ㠷扤愵㠸㌷㘷扦㝦搴晣捣㙦昵晥て㡦㥡捦〳挳㑣搲ㅡ㐳㑣㡤戱昸㠶㌱㤰敤㌰〶ㅥ㐶戳㌴〶㕥㘰ㅦ㠶敢㤵㌱㄰㜹㍢ㄶ㔱戱戳㌱挰㈰㕥㡡挹㤷㠸愹㈶ㅣㄸ㍣㙢ㅤ㜶攸〹扢㠰摢戵㈲㐰攰ㅥ敡㈹㤸㠵敦改捥捥敡㘵挳㌷㥣㈳戲晥扣㉦愰戶晣ㄵ㕣搷㤶㕤搸攳攸戶㉤戲搳㌶㕥㠹搸㥤扥敦㌹搹摤㈵㜵㘰㑡㈵攵愷搷ち㕡晥ㄳ昸㐴㌴㥥㄰㌲慦㡦晦昲晣摦㕥㝢敢ㅣ慦愵㐵戴㥡㘳ㅣ戸㤷搸㍣㉤〷㐴㙦ㄳ㌷㐲づ昱敢㥢㐵㝣㠶㘴㙤搸㘲挶昰愵扤ㄳ攸㑥㕣㔴㠴㤷㈰㑣㐵㝣㝢挱㤸挴〵〷㘵㑣㤶摡ㅣ㥢昲敢㈵改っ㉣㈵㈶㉥扤㜷㜱㝣㔰敢慡戲㝡戴㉢㜳扦㠲搲戹挵㠹戴摡㠳㍣㕦㌲㘹摡㝢敤㕡敤っ戵㥡㌴ㄳ戵㐹㐰挴㔲ち㠱〶㔲㐸昲挸挲挸扦㤴㔲换㈸攴㑡挸㔲㐲㘸敤戱㕣㥥晣昷㠵㠰㘸摣敥敢昱㑢ㄵ散㈲戰ㄸ㝢摤㝢㍤扢搲敡㡣㔵ㄳ㘳戲昲昴昱㈲ち昲㤸挲ち〶㘹㘵敤㘵ㄴ攲㤴㍢㠱搲慥ㅤ㑦㝣挹戰愳㈲㙣㡡戱㜳づ扤㙡㐵攷㌹户㡥㉢ㅥ搰㌳㜹愹㌰摣㠳慣挶搱㔳〶攳ㄴ㘸㔱㔵㌱ㅦ㔱挵㐶愷挱愸〹㍡换㍤㠲昳㈷愲㝣晣ㅣ㠸敤㤳捤愱て戵户㔰挷戹〳㔸㈰㝦㘱㝦ㅤ㑢㘱㙣扣㤵ㅣ〳〹扢㉢愸㠲扡〳㕥㐶ㄷ㘹捦㙢㝡戳挸㜷㘹ㅡ㠳搱㌱㘷昵㜵敡㝦㠶愹㈵㘷慤㄰㥡昱敡ㄶ晤㝦ㄵㄵ㍢敡㝦㡤㐱㌶㠹戲㤷愲〲ㅦ㜲㡣㤴散ㄸ㥣攱㡥挰㠷㡤㌰㡤㍣〲敢戲挸搸戶㉡㤵昱㝤慡㙡㤶ㄲㅣㅥ慥晥昶㍢㄰㡤扥戴㙤〷扢ち㐰㐶㠱㜲㍦㠳〸敡摡㥦㤳敥㍣挷收扦㠸敡昱㐵慢敡㝢㠱㘷㠶ㄳ㘵㐴㜷㈷昸㠱㤹〹㥢㘷㕡㝢户㕤愸㍤㠸㥤ㄸ㝡ㄹ㝤ㄶ㤷㈰戰㉦㠹昰㔳ち㍡㌲㠴戰扢㤰〵扦㌵ㅡ㑤挴㤱愸ㅣ㠲㍢捣ㄷ敢㠶㡤捦㔳㤷攰搴っ㔹戵㈷㜴㥤㜲㉤户摦挴攰捥攱㉥搶ぢ㜰晣〸扢㠴㈸㤸㕣挲换慦㜰㕢摢昷愰ㄵ㌶㕡㕢㐰挸摥㥣㙢挵摣㑦㠰搲摤扤愵㤵㘲昸㑥㝥㜵慣ㅣㅦ㜴㡣敥摥ぢ换㤱挶㐰攲搱攷摡昴㜶㑤摡昰㤱敤㈲挲晤ち扡㙡捦㌲挳慦晥愵愸挰〷㡤慥扣㘷㔸昸㌱㤶㐴摡㐷㌹㤳晦㌲戲敥〴晤づ挰㕡摣〳㈴㘸㡤愷ち㔲㘰㔱晢ㄱ摡戹㐳㡤㤵㙡昲攴㠰㌶扤㡡㉣㑥ㅡ㑦づ昲摤㍦〰㜰攳摤〲戵摤摦晤昶戶敦愶捥㤷㙢㑢㡥㍦ㅡ敢っ㝤ㅤ捤扡挵散㔵㘶搷㤰㡤挶慡㘳㠴搲㤰㈲㈶慦㘲〷ㅦ㥣㐳ㄹ改捦搱摦㡦捥㝤昸㐷愶㝦㥥搳愴晣㐳㔳敢㉡㈸晦攴㉡扥㤷㕣㠵㡢摡敥慢昸敥㜶慢ㄸ愵㘸攴㑣昴つ㘴挳㝤㥡㐴ㅢ㥦㕢㔶㐵昴㐹㈸㕦㐲㡤挶㡤㌹慥㌲攵慢ㅣ㘹昳昰ㄶ㈳㍤㌱㜹攵㑡捤㉢㑤㔷㜰㈲ㅦ敡㥥㘰昸挸晢摤㔵㑣攷㝢㡣捦㙢摦㠹㜷晤挲㠵昸㤳愷㙣ㄴ㌱〲搶㤵㤵㐹㉡攱㐶㙡摦㡥㠱摦晢㜵搳攱㠹〶㈴㤰㠶〲㈶㌵㐹攰㙦挵挰㈷昱㌹㤵㠴挹㌰晥捦昴㔱っ㑣慡㤳挰摦㡣㠱晦㜱昲㐸〳㌸㈶戲㐸㌴㤰〲㔲散㔷㘹搱㈷㍥慤收㐱㌹㘷㔲㈷づ㥡慡㥡攲㔰〶㝥㙤愹ㄵ㠷㜰㤵挳挷挷捤ㄷ㜱㌱〹ㄷ㌸㈰㌹搵晦㜱戰㠰ぢ㑢㜳㐶㘸攰摢攵㑤㠴㡡㝤㕤㍥戱㜳摥㕣昲㔱㌱㘰㉥〴㌸㈷搵昶ㄴ㠹㐰挵昷慢晤摤挱愵㥥㘲づ㌶昷㈳づ㜱㘵㜹〳愴㌷㡤㈰挳㈲晤摡㌷㘲捣㘶摥㙣搲㡣扥〵攴挰换㠲㥣㠵愲ち愱㡣昳㐱㈳ぢㄳ搵昹搷㤱㡤挴晦㠹挴挴愶㜴㜳㘴戵户攲昱㤲㤴愲㝦㤵ㅤ扥㠶慣て晥㔵㉤愲戳㤶㜱㜳㝣攵慥搷捥㤹昵愸㔸摥㐴㔷㡤昳攱ぢ昵慦昳改㑤㘶㝣㡡攵ㄲ捡ㄹ㑤㌶戵搷づ晥〷㍡愷捥㕦
B31: Decisioneering:7.0.0.0 | C31: Decisioneering:7.0.0.0 | D31: Decisioneering:7.0.0.0 | E31: Decisioneering:7.0.0.0 | F31: Decisioneering:7.0.0.0 | G31: Decisioneering:7.0.0.0 | H31: Decisioneering:7.0.0.0
B32: CB_Block_7.0.0.0:1-1 | H32: CB_Block_7.0.0.0:3
H33: 㜸〱捤㕤〷㝣ㄴ㘵摥捥ㅢ㤲㈵戳〴ㄲ〵愵㔹ㄶ〹㐵㠱㐸㔵㄰㌸㠴㠴㈶㈰㠱㠰搸挳㈶㤹㤰㠵㑤ㄶ㜷㌷㐰㔴ㄴㄱ㐵散㕤摡㠹搸㐵㍤扢愲㥥㘷㔰㉣愷㜸搶㍢ぢ㝡㔸戸㑦戱㜲㤶戳㥥㝥捦昳㥦㤹㘵㜶㘷㘶㜷㍦㍦昳晢㌹戰晦扣晦昷摦㘶㥥㘷㘶㜶捡㍢戳㌹㉡㈷㈷攷ㄷ㑣晣换㈹㡦㡤晤㉡㥢㘳㜱扤愱戴㉣ㄲづ敢㌵昱㔰愴㌱㔶㍡㌶ㅡつ㌶㑦つ挵攲㙤攰攰慢ち挱ㅥ换慦㡡㠵㑥搵ぢ慡ㄶ改搱ㄸ㥣昲㜳㜲ちち戴㕣搸扢㥡㥦㘲㑢搱ㄸ愵攵㔱挰㉢㐷昳㔱戴愵㈸愰搰㈸晣ㄴ敤㈸ち㈹摡㔳㜴愰㈸愲㈸愶搸㡢㘲㙦㡡㡥ㄴ㥤㈸昶愱搸㤷愲㌳㐵ㄷち搶搷扡㔱㜴㠷㈸摣て愲戲㙣摣昴敡昹㔸㥡捡㜸㈴慡昷てㅣ㘳捣昳攸挳㑢㠷㤴づㅡ㌸昰戰搲㠱晤〳㘵㑤攱㜸㔳㔴ㅦ摤愸㌷挵愳挱㜰晦㐰㐵㔳㜵㌸㔴㌳㐵㙦㥥ㄵ㔹愰㌷㡥搶慢〷づ愹づづㅤ㍥㘸攸戰㘱㜵㈳㐶っ㉦摣ㅦ㠹愷㤵㡤慢㠸敡㜵戱摦㈸攵〱㑣㌹扤㙣㕣改搱㝡晣㌷㑡㜹㈰㔲ㅥ㕤㌶慥㍣搲㄰っ㌵晥㌶㌹昳挹攷㤰㜲扤㈶㐴攲㜵㍤ㅡ㙡㥣㔷㡡㤹㑥〲ㄹ摡攱愵ㄳ㠰㜶㑤㌰ㄶ㉦搳挳攱㤹㝡ㅤ㌹㉦㙣㈰㘰㝡㔴㙦慣搱㘳ㅤㅡ挶㉦愹搱挳愶㌹㔶搰㜰㑣㌰㝡㜴戰㐱捦㘳愳愸挱攰㙣㜲慤摥ㄸて挵㥢摢㌷捣㡥改㌳㠳㡤昳㜴扡攴㌷㑣㙣ち搵收攵愹扣扣㥣㌶㝤摣㘶㐶㠸㈹㥤㄰慤㈹慢て㐶攳愲㤱戲㐱㙥扥戶戵㐳㘶㍣㘹戶戸〶〵㔲愲㐸㔲㘵愸㘱㡡ㅥ㙤搴挳㉣㐲敡晡愵㌸〹㈶〶昲〹㜰慣愵㈱㉦慡㥤戹慤㜱㔱㔸㐵ぢ㔰昴㠰昰ㅤ〴搱㜱㙡㔹㔹㘰㐰㈰慣㉦搲挳㠱挱㘸㑤㥢㌳㕤敢㐹㤷ㄲ〸㤵户ㅤ摢慥㍤〵户㥦摣慡㘰㙥㔵㜵㙥㔵㑤㙥㔵㙤㙥㤵㥥㕢㔵㤷㕢㌵㉦户慡㍥户㉡㤴㕢㌵㍦户㙡〱㝣慣愹愰㙤摢㕣㜳晡㜰晣搲扤昷摤㜱攱戴戵扤㑦㝡㜵搹捥慥摦㉢㙥慥戲摤昶㐶㐳敢〳攱敢ぢ㜱昰慣㐸㍣ㄸづ㡣㙤㙣㙣挲㥦昱㡤㝡㜴㕥㜳〰扣㈴㘶㜳㈸㕡㘵㤱㠶敡㠸㜶㌰〳て㠱㔰敡敦㤸㔱捥散搲㠲昳慦慥㈹㍤㜲攲㕦㍡㝥㜶挱扢愷㝦戵㐱㜱㝦㈰㔵晡搳㜹〰㠴慦ㄴ愲㡦㔱㘵㜲㘳っ挵挲㝡㙤愰㈲ㅡ慡搹㔳㘳㔰愲挶愱っㅢ〸愱搴㡢㘶㡤㐵㥦摤昵㝤慦㔱愳换搷㘹敤摥っ㥦㕡㜲慥攲敥㐶㙡っ愶昳㄰〸摦㔰㠸㡣㑢㌲㌰㔱㘵ㄸ〳て㠳㔰敡慦㘶㤵搵愷㠴㍢挵㝤㠷㑤㍡㘷㔷㥢攲㐱ぢ挶挷ㄴ搷㙤愹㌲㥣捥㈳㈰㝣㐷㐰㘴慣㐲㕡つ扣㐶㌲㜰ㄴ㠴㔲㑦㥡㔵㕥搱㍢〵扡㑤㔸㌴昵慡㙤敢摡㍥昱敥攴㙡挵ㅤ愶㔴昹〳㥤挷㐰昸㡥㠴挸㠰搷㥥㈵ㄹ换戰㜱㄰㑡㍤㘶搶㔸昹搴㥣戱㕦散㔸㜱攴㠳㑢搷㍤㝣挳㍢㤷㔴㈸敥㡦愵㐶㌹㥤挷㐳昸㈶㐰〴㉡㠲捤搵挱㥡〵㠱ち㙣昰㤱㕡捣戶戱㕥敥㈱㝣㈲晤㈷㐱㈸昵㤰㤹扣搷攸摢晡扤㕣㝥挹昴捤㘷慣扦晣摣㠶㡡㈶挵晤扣㈴㍦㡡捥㔳㈰㝣㔳㈱扡㜱㑤慦っ㉥挲㥥㈴㘶㑦捣ㄵ㝥ㅡ㍤㡦㠶㔰敡ㅥ㌳敤搷攳晥昵㐶攰挴慢愶晣改㠱〵捤㍦㝤扤㜸㠹攲㥡㉦㘹㉢攸㍣〳挲㌷ㄳ挲㙢㥥昷慣㐰㤵昴㥦〵愱搴敤㘶昲㐱㙦捣㝦㜳㔷攷扤愷㥤摢敥㠴搵㐳愷㝥晥戴攲㌷㤲㈴㍦㠶捥㜳㈰㝣挷㐲㈴㙤㥤㠴㤸㌳㝢ㅣ㕤㡥㠷㔰敡㈶㌳摦㌵㤷晦㔰昹搵晢搷ㅦ㜵敦散㈳㐷㍤摤晥昵ㅤ㡡㕦㙥㤲敦㐴㍡㥦〴攱㍢ㄹ挲つ〳㙢愳慦愲攷㕣〸愵㌶㤸㘹㉦㥡㝣搳㤶攳㉦捡㉢㍦慢㈱昴㜰攷㥣捦扡㉢㝥㕤㑡摡㙡㍡搷㐰昸㙡㈱㝡愵摦㤶㐸ㅦ㘷㕣㘷㔰ㅤ㠴㔲㙢捣ち扢㈶っ搸戶改㤹攰㤱㌷散㙣㕥晢㑥搳㤲昷ㄴ扦㡢愵㐲㍤㥤㐳㄰扥昹㄰晢搸㜷㔳㐳㤰捦㔸㥦戹愷搱挲㄰㑡㕤㘱㘶散㝤摢ㅢ搷㥤摢扥㜴搲㠵㘳㈶㥣户㝢捤搶昶㡡㕦散㤲戱㤱捥ㄱ〸摦㐲〸㌷㈸㤸㤸㌳㝡ち㍤愳㄰㑡㕤㘴愶㕤扢晤捤㈷㙥㉥㥡㍤晥慥户㉥㍣昰㠱㜹搵㝤ㄴてㄵ㈴㙤㥣捥㑤㄰扥㐵㄰㐹㌳扡㘷ㅤ㔸㑣愷㈵㄰㑡慤㌴㌳ㅥ昸昷慤㥢昲㉥㈸ㄹ㜷昳扣㜱㜳晦㜳昷㔹て㈸ㅥ㜷㐸挶㔳改㝣ㅡ㠴敦㜴㠸愴㡣㝢㌶戳愵㜴㍡〳㐲愹戳慣㐵㕦昰㘱户㘳挷扥㌶㝥摤扦て搸㌱㘲㜰㤷㙢ㄵて㘲㈴攳㌲㍡㥦〵攱㕢づ㤱㠱㉥㙢㠵㌸㥢㐱㉢㈰㤴㍡捤慣搰扤昳㑢愳㝣㈷㥣㕢戶慣㕢晢捥㜷捣㕤摦㔳昱〸㐹㉡㥣㑢攷㤵㄰扥昳㈰づ昰搸㤰㉤㠰㔷搱晢㝣〸愵㥡捣搴㕦㡦搸搱㘵挰愹㉦㤵慤㤸搹㌷㔶㔶ㅣㅤ慦㜸摣㈵愹㉦愴昳㐵㄰扥㡢㈱昶昳搸㡣㡤ㄵ攲ㄲ晡㕥ち愱㔴挴㑣晣捦㑢㍥敥㌰㘶攳㤴戱ㅢ捡戶㝦昳㥣晥挵摦ㄵ㡦攵㈴昱攵㜴扥〲挲㜷㈵㐴挰㔸㠹愷㉦搴愳愵㔸扤㘲㜱慣っ挶敥挷摡昰慥愲晦搵㄰㑡㠵捣攴㤳㉢㜷㕤搶慤晢昱㘳搷慦ㄸ昰愷慥挷敤㡥㈸ㅥ㈳㑡昲搵㜴㕥〳攱㕢ぢ攱〵㠸㠵昵㍡㝡慦㠷㔰慡挶㑣摤攱敡扦㍣昸㥦㡤搱愳捦㕦㝡晤戲ㄷ㝦搹戶㔲㜵㠱㔹㔲㕦㑢攷つ㄰扥敢㈰捣ㅤ㜳晡慦㑢慥搵ㅢㄹ㜶㍤㠴㔲㈷㤹㌵㔶昹㙥晥㜴㝤慦昶㐷摥㌰㝢㐵㐹挵㥤㤷ㄴ㉡ㅥ搸㑡㡤ㅢ改㝣ㄳ㠴敦㘶㠸っ㙢㡣㐵敢㉤っ扡ㄵ㐲愹㌹㘶㠵〷ㅡ晥昶㘱摢挵㠱㐹户㕥㜱昷戴㡡㜱摦扥慥扡挱㉣ㄵ㌶搱昹㜶〸摦ㅤ㄰㕥〰㔹晢㡥㍢改晤㈷〸愵㘶㤸愹摢ㅣ㌶愹挷ぢㅦ㜷㉣㝦㙣敥昷ぢ㔷㕤㍦㙣㤵攲戱戸愴扥㥢捥昷㐰昸敥㠵挸〸㤰挵敦㝤っ扢ㅦ㐲愹㈹㘶㡤晦昸㔷㡤摣昰㕣㝣晣㜹㝦㝥昱愶㈷敢慦㝤戰昰㐱㤸㘷㤸㠷㔴攵搱攰㘲㝣㥢散㌹攲ㅤ㕣㍡㤰晦㌲ㅦ攸攳㌸扦㙥㔸摤攱㜵㠳〶搵づㅢㄸㅣㄲ捣て㈰㙤戶㐷㤸摣收ち敢收㠴ㅡ㙢㈳㡢攵㤰戳戰㙥㐲㈸ㅣ搷愳愲ㄴ搵攱㡦㜱搸㉣㝡晢扡昱㑢㜰戲㔱㘳ㅣ㥤㜶慡㉢搳愳㜱ㅣ愶挷㥢昷ㅣ戲敥㌷㉥ㄸ搳昷愸晤捣摣攳㈲㑤㡤戵戱敥敥挶捡㜸㌰慥㜷㑢戵敤㐹攲〸慢挴㔷扡ㅥ㤳㔹㍡㈰㌵散㤸㘰戸㐹ㅦ扢㈴㘴㤸昷㑦㌱攳㘸㍥㔲敤㙤㥤㄰搵㑦㐹㔸ㅤ㜳㌴ㄶ愷㤷㡢㈴户㘳㈹つ㤳㌱㕦㠱戲晡㐸㑣㙦㤴搹敢搷㔰ㄱ慡㔹愰㐷㉢㜵㥥㥣敡戵戲愸晢搰㘴㥥㔲昴㥢摥㠸〵挵㐹㐲敤㐱昶㕥〲慤㌷搶敡戵㤸㕦散㐴攲捤戳㠲搵㘱㝤摦㈴ㄷ愳㈶っ㕤㤳扡㈷㐴㙡㥡㘲㘵㤱挶㜸㌴ㄲ㑥戶㡣慤㕤ㄴ挴㘹㑣敤戴㐸慤㥥㈷㔳㡥㈱㔵㑥㥢㌶㑡攵昴㜵㍢ㅦ㘰敥ㄸ捦ㄸ㙣㉢〹捦㑢搲㍢摢㔶㈲㍡扢㥥㘹㈴㌲愳㘱㕢挹攸㝦㜰摡㌹戱慦㠴昴ㅥ㤸搶摢㘵㈵㘵㔰㤷攴つ慦㜴㈶昸〱て㘱㥤㕢㘵㙥㠹㜷捡㍤敢㘵㠶㌹戵戱挲㙢ㄱ昴㑥〳㥡愴㑤慣㝢慤敢㥣㥢摢搱㕣晡昱㡢㜰戲㍡㈹搸㔸ㅢ搶愳㘹慦愴㈸捥㤱昶㄰挵㘶㡡㠷㈹ㅥ愱㜸ㄴ㈲扦ㅣ晢㌸㑦㐴昳攰愱㤶愸收晣挵愱摡㜸扤慦㕥て捤慢㡦愳て㔷㘰ちち〸户㘳搲ㅥ㐳㤷昶ㄷ㡡挷㈱晣晥ㅣ㕦ぢ晥收昸晣㤸㜲昲㜹挶昹㝦㍦㉦捥㐵㤴㈶愷攱戸㐸ㄲ换㙦挰搹㝥慣㑤ㅢ户愵㥥ㄴ㡣搵挷戹挱愵㌷㌲摦ㄶ㡡㈷㈰ち㥦㠴㤸㌶㐹て㘳㜳晤㡤慥慦攴昷㐴捡㡣㘷昲㍣搴摢户愱戲戹戱愶㍥ㅡ㘹挴㌵慥昲㘰㍣㌸戶〶㤷㉢㘲㉡攸㙢㤸ㅡ㈹㙢㡡晢ㅡ㈶㠵昰愷戰㘱愶扥㔰て挶换戰㌷㡥户㙦㤸㡡㑢ㅤ戲扢㥣㕣扢㈴扦挱戸㑡㔱慥挷㙡㌴㕥捥㤸㡣扤捦ㄲㅦ㕡搸㥤ㄶ㌶㜰㝦愲㉦㠹㌳㜵摢㠶㡡㈰㉥㠷挴㌵㌸昵㤳㈸愳挵挸昶搲㘷㐵晢㑤つㄹ㡡愵㘹换搲㑥㍡㡣㑣㌹㕣㐱昰㐵㠹㙦摣㍣㔳愶㙥㈸戳攳愱㜰慣搴㐴户戴㍣㠲㙢㕤扡㕣攵㈳敡㍥ㅦ搶㈳㕦㕡慥㔲户㘷㕥て㤹㕥㔳㙤愴挵慣㑣㡣㐶㥡ㄶㅥ㠰㕣扦㔵ㅥ收捡搱戶㐲㙣昸昷愶㤱扤晥㜸搷㉦收摦㌳戱愵挸攴㝢ち挶愴㤳㌲敢〰慥〵〶扡攰㡦㑣摡㌳昸攳搷攸慦戵㐰㌸㙤昹㈵攸㜶摤挹㝡㕣捥挹㠷㝦㘱〳㄰㤸ㄵ搵攵晡㔴㠱㈸捤ぢ昵昶つ㜳㈲搱〵搵㤱挸〲慥㄰ㅤ㐴㡢搵敢㝡㥣ㄷ㝤摡㤹搷戸搸㔶㑡戵㘹㤳㜴㌹挷㜶㜵攸㐰攴昷㍤て搱㝥㙣㌸ㅣ戰㌲挶㝣摢搰搵〶㕦㈶扥ㄷ搰攸㡣㈳挹㉡ㅣ㠲㔷つㅥ㌸㘸攰㠰㠱㐳〷っㅡ㕣扡㈴ㅣ㙢㔰㠳戱㠴扣晥ㄲ㉤㍢昸㤸㕢㔶㝤㜷昴㐵㔳㍦散戶敢ㅦ㥤摡慡㐱愶挱㜱昹愷㌷搲〵昰搱㕥愲㜸㤹攲ㄵ㡡㔷㈹㕥㠳㔰晤㄰捡扤ㄴ摡挹㤳昶て攸摡敢ㄴ㙦㐰㘰晦㈲㈰ㅢ扢ㅡ搵〷㕤摣摤㘸㙦㔱㙣㠷㔰扣㔰挴㉤㌳㐷㝢ㅢ挲㤳摥㜷㘰捣㜸㌹㘵捦搵㠸ㄶ戸㘳昶ㄲ昳愷敤㐰㠷㕦㘳ㄶ㈷改㘲㔳㠷挰㐶攲㌵〲慤ㄱ㕡㡤戰慡㙥㐸攳ち㕦㔷搳攰戸慥搵ㅦ㘱〱挶㝦㐴戱㡢攲㘳㡡㑦㈸㍥㠵㔰ㅤㄱ敡づ摦攷昴昹㠲㘲㌷㐴ち㝣〳搰㈵昰㝤㐹㠷慦㈰搴愱㄰〶㝣㕦愳攵〹摦㌷㌰㘶戸㑥戴攷㤴戸〵捥㤸挱㍤攰㝤㡢づ扦挶ㅣ㑥昰挴愶〶挲收〶㕥慥㠹㤱㘳摤㔳愶挱㜱挱㙥㌰㌲〵㔸㈹㐷㐱㜰〷愶攵㔲戴愱攰㍤ち昵攳捦㕥攰昹攸搳㤶愲〰㈲〵扣㈱㐸摡㠳㠹晤㜴㘸〷愱㠶㐱㌵挰㉢㠴敡〹㕥㝢ㄸ㌳慥㝢㝢捥晦㕢㤰㌵〹扥㈲挴晢㌵㘶㜱挲㈷㌶㜵ㄸ㐲摣攰晢ㄸ㡢敡扡敥敤㌲つ㡥㉢㤱挳㤱㈹㠰㡦搶㠵攵扡㔲㜴愳攸㑥戱ㅦ㠴晡挰ㄳ扥〳攸㜳㈰㐵〰㈲〵扥ㄱ㐸摡㠳㠹て愲㐳㑦〸㌵ㄲ慡〱㕦〹㔴㑦昸㝡挱㤸ㄱ㍥敥慤㡤ぢ〵㉤挸㥡〴㕦ㅦ挴晢㌵㘶㜱挲㈷㌶㌵ち㈱㙥昰扤攲〵摦换愶挱㜱㠹昵て挸ㄴ挰㐷ㅢ挸㜲㠳㈸〶㔳っ愱ㄸち愱㥥昷㠴敦㌰晡ㅣ㑥㌱ㅣ㈲〵扥㌱㐸摡㠳㠹㡦愰挳㐸〸㌵ㄶ慡〱摦㈸愸㥥昰㡤㠶㌱挳愶㥢㘶摤ㅢ㠳㘸扦挶ㅣ㑥昰挴愶挶㘱㌶摣挰㝢挴ぢ扣㠷㑤㠳攳摡㜱㌹㌲〵昰搱㈶戱摣㘴㡡愳㈸愶㔰㑣㠵㔰昷㜹㠲㜷㌴㝤愶㔳㔴㐰愴㠰㌷ㅥ㐹㝢㌰昱㑣㍡㔴㐲愸㠹㔰つ昰㘶㐱昵〴㙦㌶㡣㕥搷㠱搳㝣㕢捣㐱㤸㕦㘳戰ㄳ㌵戱愹㐹愸敦㠶摡昵㕥愸㙤㌴つ㡥㡢攲㐷㈱㔳〰ㅦ㙤㉥换〵㈹慡㈹㙡㈸㙡㈱搴㍡㑦搴敡攸㌳㡦愲ㅥ㈲〵戵㈹㐸摡㠳㠹攷搳㘱〱㠴㥡〶搵㐰㉤っ搵ㄳ戵〶ㄸ摤慥挲㕡㤷㝣㕡㤰㈶㘹ㄳ㡤㈰挰慦㌱捣㠹㤷搸搴搱〸㜱挳敢㝣㉦扣㔶㤹〶挷搵晥ち㘴ち攰愳㉤㘱戹㘶㡡㔳㈹㑥愳㌸ㅤ㐲㥤敤㠹搷ㄹ昴㌹㤳㘲ㄹ㐴ち㕥㌳㤰戴〷ㄳ㉦愷挳搹㄰慡ㄲ慡㠱搷ち愸㥥㜸㥤〳愳搷㕡㤶收㙢㜵㈵挲晣ㅡ㠳㥤愸㠹㑤捤㐲㝤㌷搴愲㕥愸㥤㘲ㅡㅣ户㌱㡥㐱愶〰㍥摡愵㉣㜷ㄹ挵攵ㄴ㔷㔰㕣〹愱ㄶ㜸愲㜶㌵㝤慥愱㔸つ㤱㠲摡ㅣ㈴敤挱挴㙢改戰づ㐲ㅤ〷搵㐰㙤㍤㔴㑦搴晥〸㘳搲ㄱ扢㜵戵慦〵昱㐹慢搷〶㜸晡㌵晡㍢㠱ㄲ㥢㍡ㅥ㈱㙥㐰ㅤ敦〵搴㜱愶挱㜱㝦收㐴㘴ち攰愳摤捡㜲户㔱㙣愲戸㥤攲づ〸㔵改〹搴㥦攸㜳ㄷ挵摤㄰㈹㐰㥤㠴愴㍤㤸昸㕥㍡摣〷愱慡愰ㅡ㐰摤て搵ㄳ愸〷㘰㜴摢ㅣ㍤捦㜰ㅥ㐲㠰㕦㘳㤸ㄳ㉦戱愹戹愸散㠶搷㌸㉦扣挶㥡〶挷㡤愷㙡㘴ち攰愳戵戰摣ㄶ㡡㈷㈸㥥愴搸ち愱㐶㝡攲昵㌴㝤㥥愱㜸ㄶ㈲〵慦ㅡ㈴敤挱挴捦搱攱㜹〸愵㐳㌵昰摡〶搵ㄳ慦ㄷ㘰捣㜰㕤摣㜳㑦昶㈲㘲晤ㅡ㌳㌸愱ㄳ㥢攲㙤㌲㌷攸づ昱㠲敥㘰搳攰戸愳㔶㡦㑣〱㝣戴㌷㔸敥㑤㡡户㈸戶㔳扣つ愱㝡㝡㐲昷㑦晡散愰㜸ㄷ㈲〵㍡摥㥣敢挱挴敦搳攱〳〸戵〰慡〱摤㑥愸㥥搰晤ぢ挶愴摢㕡㝢敥攸戵㈰㐳搲㔶昹㈱㝣晤ㅡ㈳㥣㔰㠹㑤㠵ㄱ攲〶搵摥㕥㔰敤㘵ㅡㅣ户ちㅢ㤱㈹㠰㡦戶㥢攵晥㑤昱㈵挵㔷ㄴ㕦㐳愸㜶㥥㔰晤㠷㍥摦㔲㝣〷㤱〲㔵〴㐹㝢㌰昱て㜴昸ㄱ㐲㥤〲搵㠰敡㈷愸㥥㔰晤ㄷ㐶户慤搲扡攵搲㠲㌴㐹㜸晤㠲〰扦挶㌰㈷㕥㘲㔳㔱㠴戸攱昵挳㝦㍤㑥〳扥㌷つ㡥㝢愰扣㈰ㄸ挰㐷㉢挸㠵攰挸㉣捤㑦搱㡥愲㄰㐲㝤㠵㔰昷㔳搰づ昴㈹愲攰㈰慥ㄴ扣㥡㤰戴〷ㄳ敦㑤㠷㡥㄰㙡㌱㔴〳慦㑥㔰㍤昱摡〷挶愴㔵㉢捤㌷㘳㘷昸晡㌵㐶㌸愱ㄲ㥢㕡㠲愲㙥㔰扤敦〵搵㝢愶挱㜱㜳昷㔴㘴ち攰愳〵㔸慥〷挵㐱ㄴ㍤㈹㑡㈰搴㜶㑦愸㝡搳愷て㐵㕦㠸ㄴ愸㑥㐳㔲㠱敡㄰㍡昴㠳㔰㑢搱㘵㐰搵ㅦ慡㈷㔴〳㘰㑣㠲㉡捤〱晥愱昰昵㙢㡣㜰㐲㈵㌶㜵〶㡡扡㐱昵㥣ㄷ㔴㝦㌵つ扤㔳敦㕡㉦㐳愶〰㍥摡㜰㤶ㅢ㐱㜱〴挵㐸㡡㔱㄰敡㐹㑦愸晥㐰㥦㌱ㄴ㐷㐲愴㐰㜵ㄶ㤲ち㔴攳攸㔰〶愱捥㐶㤷〱㔵㌹㔴㑦愸挶挳㤸㘱㕦敦昹㌵㌹ㄱ戱㝥㡤ㄹ㥣搰㠹㑤慤挰㑣戸㐱㜷慦ㄷ㜴昷㤸〶挷敤㜸摥㠵て攰愳㔵戰摣っ㡡㤹ㄴ㤵ㄴ戳㈰搴敤㥥搰ㅤ㐳㥦㌹ㄴ挷㐲愴㐰户ㄲ㐹〵扡攳改㜰〲㠴攲㍤㝣〳扡ㄳ愱㝡㐲㜷ㄲ㡣㕥㌷㜷㍤㜷㘲㔵〸昲㙢っ㜵㘲㈶㌶㜵㍥慡扢㘱戶搶ぢ戳㌵愶挱㌱捥攰㐲㘴ち攰愳搵戳㕣㠸㘲㍥挵〲㡡㌰㠴扡挲ㄳ戳㐶晡㐴㈸ㄶ㐲愴㘰㜶ㄱ㤲ち㘶㔱㍡挴㈰搴㈵攸㌲㌰㡢㐳昵挴慣〹挶昴攳ㅣ㕡㤰㈸㘹户扦ㄸ㈱㝥㡤㠱㑥挴挴愶㉥㐵㠸ㅢ㘲换扤㄰㍢换㌴㌸〶㔰㕣㡥㑣〱㝣戴㘵㉣㜷ㄶ挵㜲㡡戳㈹㔶㐰愸搳㍣ㄱ㍢㤷㍥㉢㈹捥㠳㐸㐱散ち㈴ㄵ挴捥愷挳〵㄰敡㉡㜴ㄹ㠸㕤〸搵ㄳ戱㡢㘰捣㍣㠰愳〵挹㤲㔰扢〴㘱㝥㡤挱㑥搴挴愶慥㐶㠸ㅢ㙡昳扤㔰ぢ㤹〶挷挸㤰搵挸ㄴ挰㐷㕢捤㜲㙢㈸搶㔲慣愳㔸て愱㙡㍣㔱扢㤶㍥ㅢ㈸慥㠳㐸㐱㙤つ㤲ち㙡搷搳攱〶〸戵づ㕤〶㙡㌷㐲昵㐴敤㈶ㄸ扤戶㑤捦晤搹㉤〸昲㙢っ㜵㘲㈶㌶挵㜱㉣㙥㤸捤昴挲㙣㠶㘹㜰っ㜹戹ㄶ㤹〲昸㘸㜷戳摣㍤ㄴ昷㔲摣㐷㜱㍦㠴㥡攲㠹搹㠳昴㜹㠸㘲㌳㐴ち㘶ㅢ㤰㔴㌰㝢㠴づ㡦㐲愸㡤攸㌲㌰晢㌳㔴㑦捣ㅥ㠳㌱攳㠸ㄲ捦〳晦挷ㄱ敤搷㤸挳〹㥥搸搴昵㤸つ㌷昰㡥昰〲㙦㠴㘹㜰㡣攵戹ㄱ㤹〲昸㘸捦戲摣㕦㈹㥥愳㜸㥥㘲ㅢ㠴ㅡ攲〹摥摦攸昳㈲挵㑢㄰㈹攰摤㠴愴〲摥㉢㜴㜸ㄵ㐲摤㠲㉥〳扣搷愰㝡㠲昷㜷ㄸ㌳㝣㡦㝡㝥㈷扣㡥㔸扦挶っ㑥攸挴愶㌸昲挸つ扡㠳扣愰敢㘱ㅡㅣ㠳㤴㌶㈱㔳〰ㅦ敤㕤㤶㝢㡦攲㝤㡡て㈸㜶㐲愸敥㥥搰晤て㝤㍥愴昸〸㈲〵扡摢㤱㔴愰晢㤸づ㥦㐰愸㍢搱㘵㐰昷㈹㔴㑦攸㍥㠳搱㙢㕢昵㕣摤扥㐰㤰㕦㘳愸ㄳ㌳戱㈹づ愹㜲挳捣敦㠵㤹㘶ㅡㅣ愳慦敥㐶愶〰㍥摡㜷㉣昷㍤挵てㄴ㍦㔲晣〴愱摡㜸㘲昶㌳㝤㝥愱攰〰慥ㄴ捣㌸㤰㑢㌰换㠵㑤㙢〳愱敥㐳㤷㠱㔹ㅥ㔴㑦捣昸ㄴ㐱挶㙤搵昳㝡㔰㕢㐴晢㌵收㜰㠲㈷㌶㜵㍦㘶挳つ扣㉦㝦昲㌸㤳晡户㘹㐸ㅤ㔶㤶晦㄰㌲愵摥㍦㤷愱晤㠹〱㌷戶愱㍣ㅤ攰散慢㥢摤ㄸ㡡挷摡搵㡤㙤㡡㐷㈶㠴攲攵戱㜸㘱ㅤ〴㥡ㄲ搲㑤挶愶搸㠲晡搵ㅤㄳ搲ㄷ捦挲摤攲〳㥤㈶㡣慥㉦㙢㡡挵㈳㌲㌴攰〰愷扤㍣㜲㜴㈴㕥ㅥ㡡㉤っ〷㥢㑢㕣捣㠶㘵㑥扤摥㠸挱㔲㔱㡣㤹捡攴ㄴ㔹戸㔰慦㜵㤹挷捡㐸㔳戴㐶㥦㕣晥㝢ㄸ㙥愵㡣㌱づ㔸㙦㌹搰㑡昵昲ㅥ㕥㘴挳㝤㝦㜰㤳㡢摢散敡搷㡤搶昱ㄵ㘳㜵㔳㈵㜸ㄲ〹㝦㜳㔸㤶愳㘷㌰㝣㘶㜳挶ㄵ挴㌶㝣慢ㅤ㥣晤㜵㈰搵攸㙢㙦㡥て挴戳づ愱㕡摤㙦㙡搳㐲㡤ㅤ捣收昴愶㜸㤲㈵戸愴愳㘹挱㐸㠰改㡤㈰扥㈶ㄸ慤晤㍤㜰㠲〵挳㘴㄰愲㝣昸昷敢㘰㌶搲攴攴散收ㄵㄱ㑥扢捦挴㕥㠷㌸㜳㡣㤴敢愰㡣挴㠶㠸㠶㙤攴㕢ㄱ晣摢ㄳ敡㐴㜷〱戵㘹㝡戰㔱ㄸ愸㡣搷㤶敢㡢㍡㠸㠷㡥㔵ㅢ㡦ㄹ㠵昵㡥挹慡㡣搷搱敡挶㔶挷㈲攱愶戸摥㈱搱㤲㑤㕣慢㥢愹㠷㠳ㅣ挵㔸㤸㘸㔵搴挴㌱捥㌳㤱㡦㈳ㄴ㝦㍦散〰㤱㍣㤳㈱㈵ㅣ昹搲散搹㤲ㄷ㠲㕢捦慦㘴ㄴ㐴搶挹昴昹ㄸ戵㜶つ愷摢挶攴㔸つ㜲ぢ㜲㌹昶㉤晢㘱㡡摣㡡㍡㕡愳㘷㡤㝤㥢散戶ち慤㍥㡥㄰㙣㕦㈷㝢㍣っ〳收ㄳ㘶㐵摣㙣挲㜸昴㉦ㅥ慡挱㔳㐵捤ㅤ敡㈶㌷搶㠴㥢㙡昵愹挱㙡㍤㙣敤慤㈳搱㠶摦〹㕦㜹㕣晤つ慥搲攰㘲㡥摤㥣㡣㐷㌲慤㐱㤱扦㝡〷㠷㑢㝡搶ㄷ㉡㜲ㄸ戴㍣㡡㤹昸㍦㡦〷昵㈳㘸敦㍤愳㤹攵愱㍤散搲ㅣ㕤摣㤷㜱搰㕣㘲㐸愹㙣㙤㌶户愹㤱愹ㄱっ昷慤戵㜵㑤ちㄹ㕤扦㥢㙤㑡㈸昲昹㝣扦昶㙢〵㔸㘱摡㙤㡥戵挱捥捥搰挷昰㔸㡢ㅢ挶㘳搰㔳㠷摢搹づ㍦攴ㅢ㕦㜶㠰挵㜰㉣攲摥换㌸㕣㤸ㄵ㡡㠷昵㜶㜵㘲㤷㜶〱㌷〷愲搹戶㙥㔶㍤㠶愹㤵户慦㥢ㄸつ搵㠶㐳㡤㍡て㍤㌰晣㥣て㑡㑥搵攷㘱愰㜴㐵㈴ㄶ攲戳扦敤敢㘶㐵㠳㡤戱㠵ㅣ愱㔸搳扣㜷㤲㈶㘴攵搷㡤ぢ㌵㘲攳㌱㙡戲㕤㔴㔷㔹ㅦ㔹㡣挷㠷㥢ㅡㅡ㈷〶ㄷ挶㝥ㄷ㐴㤹㕦㈵㐰挸搸愲㜲㔵㙥慥㉡挸㉤昸戵摦㔱㔸挳㤱㤲㈳㤵㜲㈹㑣慡晥㠲㔶㥡㙤㤵㉣㤹挳搴戹慤㜲㥥㤲ㅥ㠷㜵ㅤ㍢㥢㜸昶㥡晢㕦慤ㄳ㌶搰挲㝤㈰㈶㑦㥣㍤㜹捦挳つ晦㥦〷㤹昳ㅦ㐷攲㌴摦〲戲㔶㈴〶㔲敦〳攷づ挶㥡挲㍥慥㌸㥡㄰㑥㉤㜵敤昳搷㠹て㔷㐴㝣㜱搲㥤捤〹ㄸ晢㕡㠸敤ㅥ㝢㕤っㄹ挶敥戶㠳愱昰ㄸ慥㈱ㄸ㡥㤹㌶㡣〵㙡〸㜲捤攲㕡㔹㠹㕤戶㕥㈰〷搴搸㤱㘸㜵㄰戲晡㤹㕤挱㈵攸ち㉥㤱㉥㝣ㄳ昳攱〸㘹㌳㔷㘴㕥㌰ㅡ㡡搷㌷㠴㙡ち愸昰〱㠶摦挵㉡㠹㌵㈸て㘰㕡㤳慣㤷㌸㍡㑤ㅤ㥦㙣っ愹〵摢愵㌸㘱㈰㜴㘴ㅦ㉢㙥慥㝣㝤慢㕦㌹昲ㅣ㠷慦ㅡて㘷戵捥㄰昹㌸戹㐳㠷戹㡤搸㡥扢搰㈳晢愰扣㉤㜰㐸㍢ㅥ戸㉤ㅣ晣㔳㈳挱摡〹㜸㥡㈵ㄲ㙤㙢㍥㘱㕦〰ㄲ戹敦㠸ㄶ㜳〸㜸ㄹ㥥㤳挰昳ㄷ㡢㜰愰ㅢ㉤㘰㐷㈵㐶㔷攷㜱昰戸捦㘰㡢㕢㘷㑥㝥㝥扢〲户㕡㤳慤㕣㈵收戸㔸晢ㅢち㈶㍢昲㝦㍡㘳㌸㜶愱㕣〰ㅥ㉢㘸㕤戸戰㕤㈱搴ㄳ㔰戹㍣㈹づ摤攸搰㥤㘸㙣㠵㌱㜵㝢昰ㅣ㉦㡤㠰㥣晣〶㡥攳㉥㘸攰攲攰㤸挲㠷搱摤ㄸてづ㐸㝣敤ち㥥㠴㕤摢て㕥㉦㙣摢㌶ㅡ敤ㅣ昵っ㠴㔵㥦㉢㠰㌹㠳晢挳㐷㍢〰㐲扤㠴㑥㥥㜳晡づ㠴搶㘶挱㥣㝡摣㤸㐲换㜶挶愱㌸㈰㤷㘷ㅤ搶㘴攳捣㘰㑣扤〲ㄳ㡦㤷戹㥢捡㜴散愵㕥㠵ㅦ㡦扦㜰昳㡢㜳搱㠲㤶㜵〰愰㕥㠳挲㠳〰㘳昲晣㥡㔲ㅣ昵换慦慡ㅣ搷㕤愳㝡ㅤㄶ敥ㅥ戵㥥㕣挴㌷搰攲㙥㠷慢㈱㤷㔲敢〵㤱㜱㌵㔴㙦㈱挲㠲㡥搱㈶㜴扤㤹愱て昳㙥㜷㜷攸㑢㠷㠳改挰ㄱ挶攴㔷㍢〴㕡㠲㤲ㅤ戶㌰ㅢ㈵晤ㄸ搶㥦㘱ㅣ挶㉢㤴っ愰㠶㔳挰㔲晣戵ㄳ挲㈱扥改〹昹ㄸㅥ㔹ㄳ昲〹㥣つ㐲づ攵㍣戴㐰㑤㄰挲攱挳搹㄰昲㌹晣搲㄰昲〵捣㐲挸㈰㉥搲㙥㘸ㄶ㈱㕣㐶㙤〸㐴㘶㐲扥㐴㤸ぢ㈱㐳㤹㘱ㄸ昳㝥攵敥㜰ㄸㅤづ愷挳搷㜰㄰㐲㠶㐳㑢㄰昲慤㉤捣㐶挸〸㠶ㅤ挱㌰慥搶㐲挸㐸㘸挶㌶㌲ち㉤㍢㈵摣㥦愵愷㈴ㄷㅥ㔹㔳搲〶捥〶㈵愳㌹ㄷ㉤㔲捣㌸㐸㔶㍣㔴捦㠶ㄲㅦ晣搲㔰搲ㄶ㘶愱㘴っㄷ戱〰㥡㐵〹㤷㔲ㅢぢ㤱㤹ㄲ㍦挲戶㘰收㔲㜶㙦攳㤸愱㡣㜹摢戹㍢㤴搳㘱㍣ㅤち攱㈰㤴㑣㠰㤶愰愴挸ㄶ㘶愳㘴㈲挳㈶㌱慣ぢㅣ㠴㤲挹搰っ㑡㡥㐲换㑥〹〷㈳愷愷愴ㅢ㍣戲愶愴㍢㥣つ㑡愶㜰㉥㤲㈸搹て戶㙣㈸攱㠸攷㌴㤴ㅣ〸戳㔰㌲㡤㡢ㄸ㠰㘶㔱挲愵搴愶㐳㘴愶攴㈰㠴㙤㜱㔲㔲挱っ㌳㤸户愷扢挳㑣㍡㔴搲愱〴づ㐲挹㉣㘸〹㑡晡搸挲㙣㤴捣㘶搸㌱っㅢ〸〷愱㘴㡥㈴挱摤㘳晣戵ㄳ挲攱捤改〹ㄹっ㡦慣〹ㄹ〲㘷㠳㤰攳㌸て㐹㠴っ㠵㉤ㅢ㐲㌸㠶㍡つ㈱㠷挳㉣㠴㥣挰㐵ㅡづ捤㈲㠴换愸㥤〴㤱㤹㤰㈳㄰戶挵㐹挸挹捣㔰挵扣㈳摤ㅤ收搲㈱㐸㠷㔱㜰㄰㐲慡愱㈵〸ㄹ㘳ぢ戳ㄱ㔲挳戰㕡㠶㑤㠲㠳㄰愲㐳换㙦搶㠳搱ㄸ摥扡㠰戶㥤ㄴづ㥢㑥㑦捡㔱昰挸㥡㤴㈹㜰㌶㐸㤹挷昹㐸㈲㘵㉡㙣搹㤰挲戱搹㘹㐸㤹づ戳㤰ㄲ攲㐲㔶㐰戳㐸攱㜲㙡ぢ㈰㌲㤳㌲ㄳ㘱㕢㥣愴㠴㤹愱㠱㜹㉢摤ㅤㅡ改㄰愱挳㉣㌸〸㈹ぢ愱㈵㐸㤹㘳ぢ戳㤱㜲ち挳愲っ㥢ぢ〷㈱㈵㐶つ㕦敥昲㥡慢㍤搷㜷㔵㄰づ改〹愹㠶㐷搶㠴搴挰搹㈰愴㠹昳㤰㐴㐸㉤㙣搹㄰㔲〷扦㌴㠴捣㠳㔹〸㔹捣㐵慡㠷㘶ㄱ挲㘵搴㥡㈱㌲ㄳ㌲ㅦ㘱㕢㥣㠴㥣捡っ愷㌱敦〲㜷㠷搳改戰㤴づ㘱㌸〸㈱㘷㐰㑢㄰ㄲ戱㠵搹〸㌹㤳㘱换ㄸ戶〴づ㐲挸㔹搰慣慤㘴㌹摡昶慤㠴挳扥搳㤳㜲㉡㍣戲㈶攵㌴㌸ㅢ愴㥣捤昹㐸㈲攵㜴搸戲㈱㠵㘳换搳㤰㜲㈶捣㐲捡㌹㕣挸㘵搰㉣㔲戸㥣摡㑡㠸捣愴㉣㐷搸ㄶ㈷㈹攷㌱挳㉡收㍤摢摤攱㝣㍡㕣㐰㠷ㄵ㜰㄰㔲㉥㠴㤶㈰㘵愵㉤捣㐶捡㐵っ扢㤸㘱㤷挲㐱㐸戹㠴ㅡ戶㤲㑢昱搷㑥〸㐷㤴愷㈷攴㜲㜸㘴㑤挸ㄵ㜰㌶〸戹㡣昳㤰㐴挸㤵戰㘵㐳〸㠷慤愷㈱攴ㅡ㤸㠵㤰㉢戸㐸慢愱㔹㠴㜰ㄹ戵慢㈰㌲ㄳ戲ㄶ㘱㕢㥣㠴㕣捤っ搷㌰敦㍡㜷㠷搵㜴㔸㐳㠷昵㜰㄰㐲搶㐲㑢㄰戲挱ㄶ㘶㈳㘴ㅤ挳搶㌳散㔶㌸〸㈱㝦愴〶㐲慥挵㕦㍢㈱ㅣ戹㥥㥥㤰㑤昰挸㥡㤰摢攱㙣㄰戲㠱昳㤰㐴挸ㅤ戰㘵㐳〸㠷挷愷㈱攴㉥㤸㠵㤰㡤㕣愴扢愱㔹㠴㜰ㄹ戵ㅢ㈰㌲ㄳ㜲㉦挲戶㌸〹戹㤱ㄹ㙥㘲摥晢摣ㅤ㙥愶挳㉤㜴戸ㅦづ㐲挸慤搰ㄲ㠴㍣㘴ぢ戳ㄱ㜲ㅢ挳㌶㌱慣〵づ㐲挸敤搴㐰挸ㅤ昸㙢㈷㘴ぢㅣ搲ㄳ昲〴㍣戲㈶攴㐹㌸ㅢ㠴摣挹㜹㐸㈲㘴㉢㙣搹㄰昲㌴晣搲㄰昲っ捣㐲挸㕤㕣愴㘷愱㔹㠴㜰ㄹ戵㝢㈰㌲ㄳ昲ㅣ挲戶㌸〹戹㤷ㄹ敥㘳摥攷摤ㅤ敥愷挳〳㜴搸〶〷㈱攴㐱㘸〹㐲㕥戴㠵搹〸㜹㠸㘱㥢ㄹ昶〶ㅣ㠴㤰㠷愹㠱㤰㐷昰搷㑥〸〷摣愷㈷攴㉤㜸㘴㑤挸㜶㌸ㅢ㠴㍣捡㜹㐸㈲攴㙤搸戲㈱㠴愳晡搳㄰戲〳㘶㈱攴㌱㉥搲扢搰㉣㐲戸㡣摡攳㄰㤹〹㜹ㅦ㘱㕢㥣㠴戴㌰挳ㄶ收晤挰摤攱〹㍡㍣㐹㠷㥤㜰㄰㐲戶㐲㑢㄰昲愱㉤捣㐶挸㔳っ㝢㥡㘱扢攱㈰㠴㍣㐳つ㠴㍣㡢扦㜶㐲㌸慣㍦㍤㈱㕦挲㈳㙢㐲扥㠲戳㐱挸㕦㌹て㐹㠴㝣つ㕢㌶㠴昰搹㠱㌴㠴㝣ぢ戳㄰昲㍣ㄷ改㍢㘸ㄶ㈱㕣㐶敤〵㠸捣㠴晣㠰戰㉤㑥㐲晥挶っ㉦㌲敦㡦敥づ㉦搱攱㘵㍡晣〴〷㈱攴ㄵ㘸〹㐲㝥戱㠵搹〸㜹㤵㘱慦㌱慣〰㔷㝥㠵㤰扦㔳〳㈱晦挰㕦㍢㈱㝣㙥㈰㍤㈱㝥㜸㘴㑤㐸㍢㌸ㅢ㠴扣捥㜹㐸㈲愴㄰戶㙣〸攱挳〹㘹〸㈹㠲㔹〸㜹㤳㡢㔴っ捤㈲㠴换愸㙤㠷挸㑣挸摥〸㜳㈱攴㙤㘶㜸㠷㜹㍢扡㍢晣㤳づ㍢攸搰〹づ㐲挸扢搰ㄲ㠴㜴戶㠵搹〸㜹㡦㘱敦㌳㉣〰〷㈱攴〳㙡㈰㘴㈷晥摡〹攱搳〹改〹㌹〸ㅥ㔹ㄳ搲ㄳ捥〶㈱晦攲㍣㈴ㄱ㔲〲㕢㌶㠴昰ㄱ㠸㌴㠴昴㠱㔹〸昹㤰㡢搴ㄷ㥡㐵〸㤷㔱摢〵㤱㤹㤰㐳㄰收㐲挸挷捣昰〹昳昶㜳㜷昸㤴づ㥦搱愱㍦ㅣ㠴㤰捦愱㈵〸㌹搴ㄶ㘶㈳攴ぢ㠶敤㘶搸㜰㌸〸㈱晦愶〶㐲扥挴㕦㍢㈱㝣〶㈲㍤㈱㐷挰㈳㙢㐲㐶挲搹㈰攴㉢捥㐳ㄲ㈱愳㘰换㠶㄰㍥㘸㤱㠶㤰㌱㌰ぢ㈱摦㜰㤱㡥㠴㘶ㄱ挲㘵搴扥㠵挸㑣挸㌸㠴戹㄰昲ㅤ㌳㝣捦扣㘵敥づ㍦搰攱㐷㍡㤴挳㐱〸昹〹㕡㠲㤰㠹戶㌰ㅢ㈱晦㘵搸捦っ慢㠰㠳㄰昲ぢ㌴敢攴㌰㠷慥戶㌳㜶㍥㕤㤱㥥㤴㤹昰挸㥡㤴㑡㌸ㅢ愴昰㤶㕤㌲㈹戳㘰换㠶ㄴ㍥挲㤱㠶㤴㌹㌰ぢ㈹㙤㔰㐱ㅤぢ捤㈲㠵换愹攵愳㌷㌳㈹挷㈳捣㠵ㄴㅦ㘷扡㉤昳㥥攰敥㔰㐰〷扥愱㕢㥤〸㠷慤挰㔲昳㐳㑢㤰㔲㘵ぢ㐳扦㜵摦愵ㅤ摡㕡㈱㠴慡㠷㠳㤰搲㥥ㅡ戶㤲づ㜴戳ㄱ挲㐷㌷搲ㄳ㌲ㅦㅥ㔹ㄳ戲〰捥〶㈱㐵㥣㠷ㄶ㈹㘶㕥㡣て挳㤶つ㈱㝣㍥㈴つ㈱ㄱ㤸㠵㤰扤戸㐸ぢ愱㔹㠴㜰ㄹ戵㡥㄰㤹〹㠹㈲捣㠵㤰㑥捣戰て昳挶摣ㅤ昶愵㐳㘷㍡挴攱戰ㄵ㡢愷㜵㠱㤶㈰㘴戱㉤っ晤ㄶ㈱㕤搱搶扡㐱愸㘵㜰㄰㐲扡㔳〳㈱晢搱捤㐶〸㥦っ㐹㑦挸㜲㜸㘴㑤挸搹㜰㌶〸搹㥦昳搰㈲挵㑣㐲㔶挰㤶つ㈱㝣晣㈴つ㈱㉢㘱ㄶ㐲づ攴㈲㥤〷捤㈲㠴换愸昵㠰挸㑣挸昹〸㜳㈱攴㈰㘶攸挹扣ㄷ戸㍢㤴搰愱ㄷㅤ㉥㠴挳㔶㉣㥥搶ㅢ㕡㠲㤰㑢㙣㘱攸户〸改㠳戶搶ㄷ㐲慤㠶㠳㄰㜲㌰㌴㙢户㜵〸㕤㙤愴昰挱㤳昴愴慣㠵㐷搶愴慣㠳戳㐱㑡㍦捥㐷㡢ㄴ㌳㐹㔹て㕢㌶愴昰改㤶㌴愴㙣㠰㔹㐸ㄹ挰㠵扣づ㥡㐵ち㤷㔳㍢ㄴ㈲㌳㈹搷㈳捣㠵㤴㠱捣㌰㠸㜹㙦㜰㜷ㄸ㑣㠷㈱㜴戸ㄱづ㕢戱㜸摡㔰㘸〹㔲㙥戱㠵愱摦㈲㘵ㄸ摡摡㘱㄰敡㙥㌸〸㈹㠷㐳㌳㙥㔹つ愷愳㡤ㄲ㍥搷㤲㥥㤲㝢攱㤱㌵㈵昷挱搹愰㘴〴攷愲㐵㡡㤹㤴摣て㕢㌶㤴昰攱㤹㌴㤴㍣〴戳㔰㌲㤲㡢戸ㄹ㥡㐵〹㤷㔲ㅢつ㤱㤹㤲㐷㄰收㐲挹ㅦ㤸㘱っ昳㍥敡敥㜰㈴ㅤ挶搲攱捦㜰搸㡡挵搳挶㐱㑢㔰昲戸㉤っ晤ㄶ㈵㘵㘸㙢攵㄰敡㔹㌸〸㈵攳愹㘱挷㌵㠱㙥㌶㐲昸慣㑣㝡㐲㥥㠳㐷搶㠴㍣て㘷㠳㤰㠹㥣㠷ㄶ㈹㘶ㄲ戲つ戶㙣〸攱〳㌹㘹〸㜹ㄱ㘶㈱㘴㌲ㄷ改㈵㘸ㄶ㈱㕣㐶㙤ち㐴㘶㐲㕥㐱㤸ぢ㈱㔳㤹㘱ㅡ昳扥敡敥㜰㌴ㅤ愶搳攱㌵㌸㙣挵攲㘹ㄵ搰ㄲ㠴扣㙥ぢ㐳扦㐵挸っ戴戵㤹㄰敡㕤㌸〸㈱㤵搰慣ㅤ搷㉣扡摡㐸攱㔳㌸改㐹㜹ㅦㅥ㔹㤳昲〱㥣つ㔲㘶㜳㍥㕡愴㤸㐹捡㑥搸戲㈱㠵㡦晡愴㈱攵㐳㤸㠵㤴㌹㕣挸㡦愰㔹愴㜰㌹戵攳㈰㌲㤳昲㌱挲㕣㐸㌹㥥ㄹ㑥㘰摥㑦摣ㅤ㑥愴挳㐹㜴昸ㄴづ㕢戱㜸摡挹搰ㄲ愴㝣㘱ぢ㐳扦㐵㑡ㄵ摡摡㕣〸昵ㅤㅣ㠴㤴㈰㌴㘳挷㔵㑤㐷ㅢ㈵㝣挸㈷㍤㈵㍦挰㈳㙢㑡㝥㠴戳㐱㐹つ攷愲㐵㡡㤹㤴晣〴㕢㌶㤴昰㐹愲㌴㤴晣〲戳㔰愲㜳ㄱ㜳㜰搸㙢㔱挲愵搴收㐱㘴愶㈴ㄷ㘱㉥㤴搴㌳㐳㠸㜹摢戸㍢捣愷挳〲㍡攴挱㘱㉢ㄶ㑦ぢ㐳㑢㔰搲搶ㄶ㠶㝥㡢㤲〶戴戵㐶㠸晣扤攰㤰摤㘳㈸ㅣ㉢㔷㙣㝢㌶㠸㘳㈸㘳㝢搵捤挰㉦㙡攰㘷㑥愶㘳㤸㝡㥣㕤扦㠷㐱㡡㜹挶挳〲愹㙦扦㑥晥昵ㄳ㍣㘱㈳㡢㜰挲㐹〷㘰挹㔲㌱㐸昶㌵㤷㉤㐶捦㕦昷㌰㠱㍦晦戲ㅦ㝦昹㈵扢㉡ち㔵摡㉥攲ㅢ㔷慢慡㜲ち㔸ㄳ㈴㠱㍡づ慢摥ㅢ捤㌴㘳㜵㔳挶搵㌳㔳挷㍤〳づ㌹㠸戴㕦㤸㍦㠸攴㌶㔲㌱㜹挸敥㐲慣ㅤ慡ㄳ慡㌱㠷㜶ち㌵㜳㐶昲㍢愳㌷攳㜸㑦〴攰㠱㈱㡥晣慣㡣㌷㠷㌱摡㤶㑤扥㑢搴㘸㜱搰愱㘱挶散㐵愲㜹㜸㌲㉡昵挵挱㠹搸〷㤱慡㕤愷㤴ㄷ㌵㑢ㄸ㉤晢㘰㙥昲㉦〶戸㥥昱挹㜸㌲㠶㤳㉦㠶㔹散㌴㉤㔴ㄳ㡤挴㈲㜵㜱晣㡥㐷㘳㉣挰㔷㜷攳㍤㌹〳挷收㕦㠸㡣慥㌵戹㘰㜹㡤晣㉤ㅦ愱挸扦愰㌱戲戸㔱收㈶㍦挶㌷㤸ぢ㕥㙤摢戲っㅦ㈸㤰愹㈷挰㉢敥㠲ㄹ攵㔴摣搵㙡㜴戳ㅡ摤捤㐶搱㝥㘸㌰捡㈷㥥扦愱㈸摥ㅦ㤹㔹挵搷㠴〵搸慢㙣㕣㔵昲捦ㄴ昹ㄶ愱扢㄰摤㌲愴㜵㈶㕥昶敤㕢㡣㥥づ攸戱㡤晦㉥㍥挰捣愲㉤㠱㔱敢㠱㝣㕡〰㐲〵搰捦㕤㠹㕦㥤〳摣戸慡戳㤶慣戲慡〷㥡㕣㙤戵搳ㄱ愳㝡愲㈵㄰㉤愵〶㈷㍡慡㕥㤰㕣慤搴㜲㠴㤲㑣㜴攲〵〷㜰㈱ㄹ㙡ㄹ㝡㐸㐸㌲愰扤ㄹ㡡愹戸㡦搵攸㙢㌵づ㌶ㅢ㐵㠷愰搱㍡㠰昶㐳㘶㔶搱〸愸㐶昸㌴㈲㔶摣摦敡㕦挱慥㍥昴攸つ愱㑡搱㙦㐰搴㡣㈵㐹㠶攸㔰搸〴愲昳㄰愳〶㐱ㄳ㠸㔶㔱㐳㉣昴ㅣ㌵〴㔲㈰㕡㠴㜰㈷㐴㜱㔷㠸㠶㌲ㄴ㔳昱㌰慢㜱㤸搵㌸摣㙣ㄴつ㐷愳㜵㈰ㅡ㠱捣慣㤲ち搱ㄱ㔶晦愵㠴㠸㉦㠷搵晡㐳愸㔱攸㌷㈰㙡㜰㐰㌴ㅡ㌶㠱攸㑡㠲㌲〶㥡㐰㜴㤵ㅤ愲戱攸ㄵ㠸收扢㐲㔴敦ち搱㌸〴㜱㉡㉥戳ㅡ攵㔶㘳扣搹㈸㥡㠰㐶敢㐰㌴ㄱ㤹㔹㈵ㄵ愲㐹㔶晦㝡㐲㌴㠴ㅥ㝣㘲㐳ㅤ㠵㝥〳愲愰〳愲㈹戰〹㐴搷ㄱ㤴㘹搰〴愲㡤㜶㠸愶愳㔷㈰㍡搹ㄵ愲ㄳ㕤㈱慡㐰㄰愷攲ㄹ㔶㘳愶搵愸㌴ㅢ㐵戳搰㘸ㅤ㠸㘶㈳㌳慢愴㐲㜴㡣搵㝦㉢㈱ㅡ㐱㡦攱㄰敡㔸昴ㅢ㄰捤㜶㐰㜴ㅣ㙣〲搱ㅤ〴攵〴㘸〲搱㥤㜶㠸㑥㐲慦㐰㌴搳ㄵ愲ち㔷㠸㑥㐶㄰愷攲㉡慢㌱搷㙡〴捤㐶㔱㌵ㅡ慤〳㔱つ㌲戳㑡㉡㐴戵㔶晦晤㠴㘸っ㍤晥〰愱敡搰㙦㐰㌴搹〱搱㍣搸〴愲捤〴㈵〴㑤㈰㝡搸づ搱〲昴ち㐴ㄳ㙣㄰昹ㅥ㠵㡢攷ㄷ慡㉡㜷挵㉤㡣㑣㥣㡡ㅢ慣㐶愳搵㠸㤸㡤愲㠵㘸戴づ㙥愷㈰㌳慢愴攲ㄶ戵晡㕢㠸ㅢ摦攲慡㤵㐳愸㌸晡つ摣㐶㍢㜰㙢㠲㑤㜰摢㑡愴ㄶ㐳ㄳ摣㥥愲㠶㔸攸㌹慡ㄹ㔲㜰㍢挲㠶㥢㐶摣攴㙢㙥戸㉢㐴愷㌲ㄴ㔳昱㘹㔶攳㜴慢戱搴㙣ㄴ㥤㠱㐶敢㐰㜴㈶㌲戳㑡㉡㐴换慣晥㙤㤸㝢昹㐹㌴敤㈸戸愹攵攸㌷㈰ㅡ攴㠰攸㙣搸〴愲㤷〸捡㌹搰〴愲㤷敤㄰慤㐴慦㐰㔴敡ち㔱㝦㔷㠸捥㐳㄰愷攲㔵㔶攳㝣慢㜱㠱搹㈸扡㄰㡤搶㠱攸㈲㘴㘶㤵㔴㠸㉥戶晡摦㈰㐴㝣㑢慢㔶〱愱㉥㐵扦〱㔱㉦〷㐴㤷挱㈶㄰扤㑤㔰慥㠰㈶㄰扤㘳㠷攸㉡昴ち㐴〷搹㈱㑡ㅣ㉣〵㕣㈱扡ㅡ㐱㥣㡡慦戱ㅡ慢慤挶ㅡ戳㔱戴ㄶ㡤搶㠱㘸ㅤ㌲戳㑡㉡㐴敢慤晥㥤㠴㘸づ㍤㡥㠱㔰搷愲摦㠰愸慢〳愲つ戰〹㐴ㅦㄱ㤴㡤搰〴愲㕤㜶㠸㙥㐰慦㐰戴慦ㅤ愲挴㠶搶挹ㄵ愲ㅢㄱ挴愹昸㈶慢㜱戳搵戸挵㙣ㄴ摤㡡㐶敢㐰㜴ㅢ㌲戳㑡㉡㐴㥢慣晥摤㠴攸㈴㝡昰㔵慦敡づ昴ㅢ㄰戵㜷㐰㜴㈷㙣〲搱搷〴攵㉥㘸〲搱㌷㜶㠸敥㐱慦㐰攴户㐳㤴㔸㡢ち㕣㈱扡ㄷ㐱㥣㡡敦戳ㅡ昷㕢㡤〷捣㐶搱㠳㘸戴づ㐴て㈱㌳慢愴㐲戴搹敡晦㠹㄰搵搰愳ㅡ㐲㍤㠲㝥〳㈲攵㠰攸㔱搸〴愲㥣㝣㜸㍥〶㑤㈰攲㙦㝢戲〱㍤㐷㍤づ㈹㄰晤晣㠳敤㤰㍢戱ㄶ晤㠴㕥攷㔹㐹ぢ㐳㌱ㄵ㙦戱ㅡ㑦㔸㡤㈷捤㐶搱㔶㌴㕡〷愲愷㤰㤹㔵㔲㈱㝡摡敡㉦挰〲捡㡦㈰㙡㝣㡢慢㝡ㄶ晤〶㐴摦㘰㘹㤲捦㑡晥ち㥢㐰㔴㐸㔰㥥㠷㈶㄰戵户㐳昴〲㝡〵愲㉦㕤㈱摡敤ち搱摦㄰挴愹昸㐵慢昱㤲搵㜸搹㙣ㄴ扤㠲㐶敢㐰昴㉡㌲戳㑡㉡㐴慦㔹晤㥤〸㔱㠴ㅥ㝣㝢慢晡〷晡つ㠸㜶㌹㈰㝡ㅤ㌶㠱愸ぢ㐱㜹ㄳ㥡㐰搴搵づ搱㜶昴ち㐴晦攳ち搱㑥㔷㠸摥㐶㄰愷攲㜷慣挶㍦慤挶づ戳㔱昴㉥ㅡ慤〳搱㝢挸捣㉡愹㄰扤㙦昵〷〸ㄱ㕦愹慡昱㠵慤㙡㈷晡つ㠸摥㜱㐰昴㉦搸〴愲ㄲ㠲昲㈱㌴㠱愸㤷ㅤ愲㕤攸ㄵ㠸摥㜲㠵攸つ㔷㠸㍥㐶㄰愷攲㑦慣挶愷㔶攳㌳戳㔱昴㌹ㅡ慤〳搱ㄷ挸捣㉡愹㄰敤戶晡晢ㄳ愲搳攸㜱㉡㠴晡ㄲ晤〶㐴㉦㍢㈰晡ち㌶㠱㘸㈰㐱昹〶㥡㐰㌴挸づ搱户攸ㄵ㠸晥㘶㠷㈸戱扢摥收ち搱㜷〸攲㔴晣扤搵昸挱㙡晣㘸㌶㡡㝥㐲愳㜵㈰晡㉦㌲戳㑡㉡㐴㍦㕢晤挳〹搱㔹昴㔸〶㈱㉦㐷㌲㈰㝡捡〱㤱挲㥥㕤㈰ㅡ㐵㔰㘴戴〹攳㐶摢㈱捡㠷㡦㐰昴㠴ㅤ愲挴敥扡挵ㄵ㈲ㅦ㠲㌸ㄵ㜳愴㠹㌴ち慣㠶㘶㌶㡡㌸慡愴㜵㈰㙡㠷捣㙥㄰ㄵ㕡晤攵㠴㘸㈵收㑢攳㡢㔸ㄵ〷愸ㄸ㄰㍤散㠰㠸㘳㑡〴愲㐹〴㘵㉦㘸戲ㄶ㑤戶㐳搴ㄱ扤〲搱㠳慥㄰摤敦ち㔱㈷〴㜱㉡摥挷㙡㜰愰㠷昴㜴㌶ㅢ㐵㕤搰㘸ㅤ㠸㌸㍡挴つ㈲づㄸ㤱晥ち㐲挴㌷愳㙡㝣敦慡摡て晤〶㐴㜷㍡㈰摡ㅦ㌶㠱㘸ㄶ㐱㤱ㄱㄹ㡣㥢㙤㠷愸〷㝣〴愲㑤慥㄰摤敡ちㄱ㐷㘲㜰㉡收㘸っ㘹㤴㔸㡤㕥㘶愳愸㌷ㅡ慤〳ㄱ挷㙢戸㐱搴搷敡㍦㤱㄰㕤㠱昹搲㉥㠷㔰ㅣ挰㘱㐰戴搱〱㔱㍦搸〴愲戹〴㐵挶㐷㌰㉥㘸㠷㠸攳㈳〴愲㙢㕤㈱㕡敦ち搱㐰〴㜱㉡ㅥ㘴㌵㌸㄰㐲㝡㠶㤸㡤愲愱㘸戴づ㐴挳㤰搹つ㈲づ愸㤰晥㝡㐲戴〶戳愳慤㠶㔰挳搱㙦㐰㜴㤵〳㈲㡥㠱㄰㠸挲〴㘵㈴㌴搹搰ㅡ散㄰㡤㐶慦㐰㜴戹ㅤ愲挴敥晡㔲㔷㠸㌸㑥㠱㔳㌱挷㉡㐸攳㐸慢㌱搶㙣ㄴ㜱㕣㐲敢㐰挴搱っ㙥㄰㤵㕢晤㜱㐲戴〱昳愵㕤ぢ愱㈶愰摦㠰㘸㤵〳㈲㡥㑡㄰㠸㤶㄰㤴挹搰〴愲㘶㍢㐴㔳搰㉢㄰㥤敢ち搱ち㔷㠸愶㈲㠸㔳㌱㐷て㐸㠳㐳〵愴挱攱〲㥣㡡㉡搰㘸ㅤ㠸㘶㈰戳ㅢ㐴ㅣ㜲㈰晤换〸搱㑤㤸〹敤㐶〸㌵ぢ晤〶㐴㑢ㅤ㄰捤㠶㑤㈰㕡㐱㔰攴㝥㍥攳捥戱㐳挴晢昹〲搱愹㜶㠸ㄲ摦㘸㑢㕣㈱攲㝤㝣㑥挵㈷㔸㡤ㄳ慤挶㐹㘶愳㠸昷敤㕢〷㈲摥敤㜷㠳㠸〳〰愴晦㐲㐲㜴㍢收㑦摢〴愱㌸〰挰㠰攸ㄴ〷㐴扣㘷㉦㄰㕤㑡㔰㡣晢敢㠸扢捣づㄱ敦慦ぢ㐴㡤㜶㠸ㄲㅢ㕡搸ㄵ愲㝡〴㜱㉡づ㔹つ摥㐸㤷㥥〵㘶愳㈸㡣㐶敢㐰挴扢敦㙥㄰昱㠶扣昴慦㈶㐴㝣㐷愹㜶㌷㠴㕡㠸㝥搹㝣搶愱摦㥡㡡㑦㐱㉦晥攳戱㍡昴戶㙦愳㤶㐰㈹愱晥㍣挵㌶㡡ㄷ㈰搴㕣㈰戰ㅤ慦愸㜶晣㤲㕤㤵㘹㜰晣㡡攲改挸攴慣户ㄴ扤昸㡦攷搹㡣㝡㉢愰㤴㔰㑦愹㜷㥣㔷扤㘳㑤㠳攳㘷〷捦㐳㈶㘷扤㔵攸挵㝦慣㈶㐶扤㑢愱㤴戸搴㥢改㔵㙦㠶㘹㜰晣㔲摦㤵挸攴慣㜷ㄵ㝡昱ㅦ挰ㅢ昵搶㐳㈹㜱愹㌷挵慢摥㔱愶挱昱搳㜶搷㈱㤳戳摥㐶昴攲㍦ㅥ晡㌲敡摤ち愵挴愵㕥戹㔷扤㌲搳攰昸㉤戸㍢㤰挹㔹㡦昷㌸昰ㅦ㑦㕢ㄹ昵敥㠷㔲攲㔲㙦戴㔷扤㔱愶挱昱昳㘹㥢㤱㐹敡㍤㠵捣搶㔴捣ㅢ〶昸㡦㘷愸㡣㝡㉤㔰㑡愸愷慣㉦㠷㜹搵ㅢ㘶ㅡㅣ㍦㍣戶ㄵ㤹㥣昵㜸愱ㅤ晦戱搶ㅢ昵戶㐱㈹㜱愹㜷愸㔷扤㔲搳攰昸攱慥㤷㤰挹㔹敦㘵昴攲㍦ㅥ㐹㌲敡扤〱愵挴愵㕥㕦慦㝡㝤㑣㠳攳㈷慦摥㐶㈶㈷㝦敦愰ㄷ晦昱㉣㤰㔱㙦㈷㤴ㄲ㤷㝡㍤扣敡〵㑣㠳攳㤷愳㍥㐲㈶攷昲敤㐲㉦晥攳〹ㅦ愳摥㙥㈸㈵㉥昵扡㜹搵敢㙡ㅡㅣ扦扣昴㌵㌲㌹㤷敦ㅢ昴攲㍦ㅥ慤㌱敡晤〴愵挴愵㕥㐷慦㝡㝢㥢〶挷捦ㄵ挹ㄵ㍥㘶㑡㕡㍦㜹愵㑦敡敤㌶敡昱挲㤸㕢扤㐲慦㝡敤㑣㠳攳㌷㝦ち㤱挹㠹㈷㉦㥢㐹扤㙦㡤㝡扣捡攴㔶㉦摦慢㕥㥥㘹㜰晣㘶㑥ㄷ搷㝡扣〶㈵昵㝥㌶敡昱㤲㡤㕢扤㥦扦昷昸㝥昸慦㘹㜰晣昰㡣㕣挸㜱攰挹ぢ㍡㔲㉦ㅦ㠳㔷昰㝤搴摦愳摥户㕥昵晥㘳ㅡㅣ扦摥㈲㔷㐵㔸㉦改晢㡦㔷㐷愴㕥愱㔱㙦戸㐷扤摤㕥昵扥㌰つ㡥㥦㍣㤱㑢っ㡥攵攳愵〶愹搷搱愸挷㌳㜳㌷㍣㜷㜹搵晢挸㌴㌸㝥㉥㐴捥搷ㅤ昵㜸摥㉥昵扡ㄹ昵㜸㥡敢㔶敦㝤慦㝡敦㤹〶挷㡦㙤挸挹慦愳ㅥ㑦㠲愵㕥て愳ㅥ捦ㄹ摤敡㙤昷慡昷㤶㘹㜰晣㑣㠵㥣㐹㍡敡昱㡣㔲敡昵㌵敡昱〴捣慤摥㙢㕥昵㕥㌵つ㡥㥦㜸〸㈳㤳㜳晦挲搳㌳愹㜷愸㔱㡦㘷㌳㙥昵㕥昰慡户捤㌴㌸㝥ㄵ㘱㠹㙢㍤㥥敢㐸扤挳㡣㝡㍣㌵㜰慢昷戴㔷扤愷㑣㠳攳愷〴攴㠴挱㠱㈷㑦ㅣ愴摥㘸愳ㅥ㡦戳摤敡㍤敥㔵敦㉦愶挱昱ㅡ㝥㌹晡㘶扤愴敤㡦㐷攱㔲慦摣愸户摡愳摥㘶慦㝡て㤹㠶搴㌷搷ㄷ㕢㘵昲㜹㘴㝢㠸昷㍢搲㡤㔷㙣㘲挴㥥ㅥ㤳㌷挹ㄶ㘱ㅥ昳敢㌸挶戰㕤ㅤ〷昲改昲㥥㑦㜹㌹㜹㔸〶攸ㄵ攲㙤㥢搱〵㝡㜴㉡摥ㅤ㡢㜷㙣㔶㠶捣摦㌱㥦㡣㜷捡昲㕤㠸搶㕢ㅥ㌵搱㌸㍡搴㔷㌷㍤㡡搷㍥戶慤㥢ㅣ挳ㅢ㙡㙢ぢ昰愳昷昱戸ㅥ㙤晣㍤㡣㜲挵昵搲㍣㡣㍤挶㘴扣㠴搳㜵戴㈲㠷㈱愶扥ㄵ搲昶ㅡ摥㍤㜸㔸慦㘱捥攵㑢㍡㝦摤ㄸ㔷ㄹ㕥㥤慢ㅥ〰慦㜲㕢散㤳挱㕤㘵ㅣㅦ㕥晣㠹㥦搱挵㕡攲㔷㌲扦ち〳〳挵㔷〴㥥㤳〱捤愴摡㡣扦搷㌵㝥扡㜷㍣㑦㄰㙣昱㜷戹挶捦昴㡥攷〱扦㉤晥づ搷昸搹摥昱㥢㤳攳㙦㜳㡤㍦搶㍢㥥〷攴戶晡㌷扢挶㥦攰ㄹ㕦㙣ㅤ搶㈸ㅥ㘹摢ㄲ摤攰㥡攸㘴捦㐴㡡㐷捥戶昸敢㕣攳㠳摥昱㍣ㄲ戶挵晦搱㌵扥搶㍢㥥㐷戶戶昸戵慥昱昳扣攳㜹愴㙡㡢扦挶㌵㝥扥㜷㍣㡦㍣㙤昱㔷扡挶㌷㜸挷昳㐸搲ㄶ㝦㤹㙢晣㐲敦㜸ㅥㄹ摡攲㉦㜶㡤㡦㜹挷昳㐸捦ㄶ㝦㠱㙢晣㈲敦㜸ㅥ戹搹攲捦㜳㡤㙦昶㡥攷㤱㤸㉤晥ㅣ搷昸搳扤攳㜹㘴㘵㡢㕦敥ㅡ㝦愶㜷㍣㡦㤴㙣昱㘷扡挶㉦昷㡥攷㤱㡦㉤晥㜴搷昸㜳扣攳㜹㈴㘳㡢㙦㜶㡤㍦捦㍢㥥㐷㈶戶昸㐵慥昱ㄷ㜸挷昳㐸挳ㄶㅦ㜳㡤扦搸㍢㥥㐷づ戶昸㠵慥昱㤷㜹挷昳㐸挰ㄶ摦攰ㅡ㝦愵㘷㝣㍥扦㈳戲晥戲攲ㄱ摥慦㝣戶攱㙡搴㔱晣㐲㘱㐱敤ㅡ㙡晣㝡㄰㙤㌵㌵敥散㐵㕢㐳㡤扢㙥搱搶㔲攳㡥㔸戴㜵搴戸㌷ㄵ㙤㍤㌵敥ㅢ㐵晢㈳㌵敥改㐴扢㤶ㅡ昷㕢愲㙤愰挶扤㤰㘸搷㔱攳㍥㐵戴㡤搴戸㠷㄰敤㝡㙡摣摥㐵扢㠱ㅡ户㕥搱㙥愴挶㙤㔱戴㥢愸㜱换ㄲ敤㘶㙡摣㑥㐴扢㠵ㅡ搷㝡搱㙥愵挶㜵㔸戴摢愸㜱㡤ㄴ㙤ㄳ㌵慥㕦愲摤㑥㡤㙢㡢㘸㜷㔰㈳昷愲摤㐹㡤㑣㡡昶㈷㙡〲㉡㌸㐹㍡㑡㔴〲慥愳㔷㐰㜶昴ち搸㡥㕥〱摤搱㉢攰㍢㝡㠵〴昶㕡㕦㠹㘸攷㈸㈱挳搱㉢愴㌸㝡㠵ㅣ昶㕡〷愱㘸攷㈸㈱挹攱㉢㘴㌹㝣㠵㌴㠷慦㤰攷攸ㄵㄲㅤ扤㐲愶愳㔷㐸㘵㙦搲㥣〹戹づ㕦㈱搹搱㉢㘴㍢㝡㠵㜴㐷慦㤰捦摥愴㙡戲ㄲ㌸㝡㘵㘵㜰㘴㤰㤵㈲搵户摤晦〲㉡户昱㐲
H34: Decisioneering:7.0.0.0
B35: CB_Block_7.0.0.0:1-2 | H35: CB_Block_7.0.0.0:2
H36: 㜸〱捤㝤〹㜸ㄴ㔵昶㝤㕥㐸㥡㔴ㄳ㐸〴㔴挰慤㠱㈸㈸㠸慣㡡〲戲㈴戲〸㐸㈰㉣㙥ㄸ㍢㐹㠷㌴㜴搲搸摤〱攲㡡愰㠳晢扥戰〹敥扢攳㠲ち敡㌸〶挵ㄵㅣ昷搱㜱ㄹㄵ㥤㔱搴ㄹㄹ㤷㜱㘳昴㝦捥慤慡㑥㜵搷慢㑥晦晣㥢敦戳愰㙦摥㝤㜷㜹昵捥愹慡㝥㔵昵慡㍡㐷攵攴攴晣㠲㠵㝦戹攴戱戰㜷㐵㔳㍣ㄱ慡ㅦ㔰ㅡ㡤㐴㐲搵㠹㜰戴㈱㍥㘰㙣㉣ㄶ㙣㥡ㄲ㡥㈷摡挱挱㔷ㄹ㠶㍤㥥㕦ㄹて㥦ㅡ㉡愸㕣ㄴ㡡挵攱㤴㥦㤳㔳㔰㘰攴挲摥摤晡ㄴ摢㡡挱㈸㈳㡦〲㕥㌹㠶㡦愲㍤㐵〱㠵㐱攱愷攸㐰㔱㐸搱㤱愲ㄳ㐵ㄱ㐵㌱挵㙥ㄴ㥤㈹扡㔰㜴愵搸㥤㘲て㡡㍤㈹扡㔱戰㝤愳〷挵㕥㄰㠵㝢㐳㔴㤴㡥㥢㔶㌵ㅦ扤愹㐸㐴㘳愱晥㠱搹收㍡㡦㍡㙣挰㤰〱㠳〶づ㍣㜴挰挰晥㠱搲挶㐸愲㌱ㄶㅡ搵㄰㙡㑣挴㠲㤱晥㠱昲挶慡㐸戸㝡㜲愸㘹㘶㜴㐱愸㘱㔴愸㙡攰㤰慡攰搰攱㠳㠶づㅢ㔶㝢昸攱挳ぢ昷㐱攲愹愵攳捡㘳愱摡昸㙦㤴㜲㕦愶㥣㔶㍡㙥挰㌱愱挴㙦㤴㜲㍦愴㍣愶㜴㕣㔹戴㍥ㄸ㙥昸㙤㜲收㤳捦㈱㘵愱敡㌰㠹て㠵㘲攱㠶㜹〳戰搲㈹㈰㐳㍢㙣挰㜸愰㕤ㅤ㡣㈷㑡㐳㤱挸㡣㔰㉤㌹㉦慣㈷㘰愱㔸愸愱㍡ㄴ敦㔴㝦搴㤲敡㔰挴㌲挷ぢ敡㘷〷㘳挷〴敢㐳㜹㉣ㄴ搵㥢㥣㑤慡〹㌵㈴挲㠹愶㡥昵戳攲愱ㄹ挱㠶㜹㈱扡攴搷㑦㘸っ搷攴攵愹扣扣㥣㜶㝤㜴㉢㈳挴っㄸㅦ慢㉥慤ぢ挶ㄲ愲㤱戲㐱㍡㕦挷搶㈱㉢㥥戲㕡摣㠲〲㘹㔱㈴愹㈲㕣㍦㌹ㄴ㙢〸㐵搸〸愹敢㤷收㈴㤸㤸挸㈷挱戱㝢㐳㕥㔴〷㙢㕦㘳㔷搸㡡ㄱ愰攸〹攱敢〵戱ㄷ㌶㠳挰戸㔰㐳愸㌶㥣〸ㅣㅣ㠸㠴ㄶ㠵㈲㠱挱㈸㑤㥤㌳捤攸㑤搷ㄲ〸㤵昷づ昶㘱㘷㉡敥㐷戹㤵挱摣捡慡摣捡敡摣捡㥡摣捡㔰㙥㘵㙤㙥攵扣摣捡扡摣捡㜰㙥攵晣摣捡〵昰戱㤷㠲昶敤㜳慤㘵㙤昷㠹搷散戸昱㡣挹㑦㕣昷昸㔵愷づ㕦昸㠹攲㙥㉢晢敦〱㈸ㄸ㝤㈰㝣㝤㈱昶㥥㔲㕡ㅡ愸〸㉥〲昵㜱㝢捤㠶㘰捤㑡愳昵㔵㔱攳㐰晡ㅥ〴愱搴ㅢ㔸㌷慥摦㌵昵换㠷㌶摥搱㝣昴搹㠳〶㝦户㝦户扥㘷㉡ㅥち㈴㜱㝦㍡ㅦっ攱ㅢ〰搱㠳㝤㉥㡤挶㕢㍡㍣㈸㤹昶㄰㝡づ㠴㔰敡㈵㉢敤愵扥㍦㡣扢㌴摥㙤捡㥡慡攳扦ㅡ扦㕢散㕥挵㠳㡢愴ㅤ㑣攷㈱㄰扥愱㄰㠱昲㘰㔳㔵戰㝡㐱愰ㅣ㥢㙢戴㈶㠹㘶换㍡て愳晦愱㄰㑡㍤㙦㈵㥦㝢愹㙦晡扦㕥㍤㜲搲摤㕢ちㅥ攸晢捥昰㘱㡡ㅢ戰㈴ㅦ㑥攷挳㈱㝣㐷㐰攸挰㘸㔹敢ㄱ昴ㅤ〹愱搴㔳㔶攲㥦收敦戳㝤挵㜱㔳㈶慦㕥㜶搰㤹㕦つ㕦昱㥣攲㠱㔰ㄲㅦ㐹攷搱㄰扥㌱㄰㕥㙢捤㙤挰㐴㝡㉣晤挷㐱㈸昵戸㤵晣攸敤晦扣㈵扥昶愷戲㍦敥摢慥攲挷㙤ㅤ㡥㔵㍣挰㑡昲㌲㍡ㅦ〵攱ㅢて戱慦〷㈴㕣㜳㙥㘰ㄳ攸㍤ㄱ㐲愹㡤㔶敡㐷户㝣戶改昵愱㔵攳慦㔹ㅡ㥥ㄳ敡㝣敢㜹㡡㠷㙤㐹㝤㌴㥤㈷㐳昸愶㐰〴㘶㐶ㄳ挱㐸㘰摡挲㔰㙣㐰㉡㤹昶搶㍢㤵晥挷㐰㈸㜵扦㤵晣㡤㑦捦慣ㄹ㝤摤㤵愵ㄷ搴晤㝤晡㍦㝡㍥摤㔷㜱㌳㤶攴攵㜴㥥づ攱㥢〱攱摥㐲㠶㈶攱愸愰攷㑣〸愵敥戲搲㝥㜴昵㠸攵ぢ摢㙦ㅤ㝦攵昵㥤〶㉥㡤㌷㌶㉢㝥挱㐸摡搹㜴㥥〳攱㍢ㄶ㘲慦㘳愲㠱㐹昵ぢ㠳搵扡㉤敦㌸扡ㅥて愱搴㉤㔶摥㑦晥扡攷㈹愷㠶摦㍣㘶搹㠵㈷㤷敦㔵ㄵ㍣㐰昱㍢㑢昲㥥㐸攷戹㄰扥㤳㈰摣慢摢戲捤㔵搲昳㘴〸愵搶㕢㘹昷愹ㅣ搹户昳摡摡㌱敢㤷㜴敥㜳摤㠱㝦㔹慣昸㉤㈸㘹慢攸㕣つ攱慢㠱搰慣㙥㑢摥㄰㕤㙢㈱㤴㕡㘵攵㕤摡愳㜱昸㡣㍢㑥㥡扡㘲捣慢敤㕦慢愹㡡㈹㝥戱㑡摥㍡㍡㠷㈱㝣昳㈱扣愹戳户ぢㅥ㌹㡣〸㠴㔲㔷㕡挹昳㥥摤扦㜳攰挲搳挶㉣敤昵捣扡ㅢ㉥㑤ㅣ慢昸㠵㉤挹ㅢ攸ㅣ㠵昰㉤㠴攸愱㌹㙡搸㘹㑦愱㘷っ㐲愹㡢慤戴搷慦ㄸ㜷挴摥㥦㥤㔲戶慥散㤷㌷㜶ㅡ㔳ㄷ㈸づ〱㈴㙤㠲捥㡤㄰扥㐵㄰摥敢㑣㐸戸㉤㉦愶晦ㄲ〸愵㔶㔸挹摦ㄸ戱㙡摤㠵㕢愷㡦戹昶愱㡦㉡㌷慦慡捦㔵ㅣ㕡㐸昲㔳改㝣ㅡ㠴敦㜴㠸敥晡敤㠲㔹捦愰攳㤹㄰㑡㥤㙤㘵㕤晦㡦扡ㅢ㠲搱㌱ㄳ敥㥡戹捦攷挱㤹慢晥慢㌸㔶㤱慣㑢改㝣㌶㠴㙦ㄹ㠴敥㤰搱戲㔷㉦愷敦㌹㄰㑡㥤㘶㈵㝥散㈱昵㑡晥攱敤㈶㙦摣扥㙣㝢㝣挷㙥㈷㉢㡥㝦㈴昱ㅦ攸扣〲挲㜷ㅥ㐴㌷搷昱搳摥攵捥愷摦〵㄰㑡㌵㕡㐹扦戸昶㥣挰㔹㍢㙥ㅢ㜷挱摡㙥㡢ㄷㅤ摡昸戰攲㜸㑡㤲㕥㐴攷㡢㈱㝣㤷㐰散㑥摥散挳㝣换㙡㕥㑡愷换㈰㤴㡡㕡ㄹ㌷挶ぢ晡㍣摣昱愸㜱㝦㈸ㄹ㜹捦攷㤷攷㑤㔰ㅣ㥣㐹挶㉢攸㝣㈵㠴敦㉡㠸㕥㥥㐷㠸㤶〳攷搵㡣戸〶㐲愹戰㤵晥愹㑥晥㘵捦㍦扦㘱捡㈳㉢慡㍥摣㜵㘲㥦㌷ㄵ㠷㝤㤲㝥㈵㥤㔷㐱昸㔶㐳㜸愷ㅦ㤸㍣㔶慣㘱挴㕡〸愵慡慤昴㠹㡥㘵㤷㥥搹慥愰昴扣慤ㅢ㌶㉥搸攳扢㑡搵つ㘶㐹扦㡥捥敢㈱㝣搷㐳㘸戶〹ㅥ㠳戸㑤摣㐰挷ㅢ㈱㤴㥡㙢㘵晤搳昴ㅢ晦㔴晤昴散戱户ㄹ攵㤳挶㉥ぢ昷㔳ㅣ愱㑡搶㥢改㝣ぢ㠴敦㔶〸昷㤱愲〵敡摢攸㜹㍢㠴㔲㜳慣戴晦晤愵收愹搵㉦昶ㅢ戳慥㘹㔷㠹㌱㝡扦愷㔵て㤸㈵敤㥤㜴扥ぢ挲㜷㌷㐴ち㜹㉤㠷捡㝢攸昴㐷〸愵愶㕢ㄹ摦搸戱㙣捥愱㙡挳搴㡢㡦㝦㘳攴㠱敦㕥晥㠹攲〰㕡㌲摥㐷攷晢㈱㝣て㐰㘸挷㈵昶慥戶㠱慥て㐲㈸㌵搹捡晢晤㙤慦晤搰攵㠵て㈶晦改昴㘱㘷㝤扡戰摦㡡挲㠷㘱㥥㙥㡤㝤捡㘲挱挵ㄸ㐵戴っ㑤〷てㄸ挸㝦慤㡦挸㌱㈰慦ㅤ㔶㝢㔸敤愰㐱㌵挳〶〶㠷〴昳〳㐸㥢敤㔰㤰扢㑦㘱敤㥣㜰㐳㑤㜴戱㡣つぢ㙢挷㠷㈳㠹㔰㑣㤴愲㕡晣㌱挷户愲㜷慣㍤㙡〹捥ち慡捤㘱㘴搷摡搲㔰㉣㠱昱㜴愲愹㘵㙣戹昷戸㘰㍣搴愲昶戳㜲㡦㡢㌶㌶搴挴昷搲ㅢ㉢ㄲ挱㐴愸㐷扡慤㈵㠹㉢慣〲愳㤷㔰㕣㔶㘹摦昴戰搹挱㐸㘳㘸散㤲戰㘹摥㈷捤㡣㘱㜷戴捡摢㍡㍥ㄶ㍡㈵㘹㜵慤搱㔸㥣〷㉥㤲摣慥㕥㥡㈶㜳扤〲愵㜵搱㜸愸㐱㔶慦㕦㝤㜹戸㝡㐱㈸㔶ㄱ攲㔹㘴愸㐶扡扡㍢㑤搶搸扦摦戴〶㜴ㄴ愳昹㥡㕥捥㕡〲ㅤ㙡愸〹搵㘰㝤㌱㝣㐸㌴捤っ㔶㐵㐲㝢愴戸㤸㙤挲搰㍤愵㝡㝣戴扡㌱㕥ㅡ㙤㐸挴愲㤱㔴换搸㥡㐵㐱㥣㙦搴㑣㡤搶㠴昲㘴挹㌱愵捡㘹搷㑥愹㥣扥扡㠱㍢㜳挷㌹戴㜷㙣㈴㍣㠱挸散散搸㠸攸慣㍤㈵㐸㘶㐶挱戱㤱搱晦挰㡣㙢攲摣〸改㍤㌰愳户㘶㈳㘵㔰户搴ㅤ㙦挰っ昰〳ㅥ㈲㈱敥㤵戹㈵摥㈹㕢戶换㔶搶搴挱ち㉦ㅡ搰㍢〳㘸㤲㌶戹敤戵慤㜳㙥㙥ㄷ慢昷㐷㉤挲㔹攵挴㘰㐳㑤㈴ㄴ换㜸挹㐳㜱㡤㡣㡤ㄴ㥢㈸ㅥ愱㜸㤴攲㌱㠸晣㌲ㅣ攳㍣ㄱ捤㠳㠷㕡愲㥡昲ㄷ㠷㙢ㄲ㜵扥扡㔰㜸㕥㕤〲㜵戸㔴㔲㔰㐰戸㕤㡢昱㌸慡㡣㍦㔳㍣〱攱昷攷昸㥡昱㌷挷攷挷㤲㤳捦㔳挳晦晢〹㙣㉥愲っ㌹㕦挶搵㡣㜸㝥㍤㑥换攳敤摡改㝡㍤㌱ㄸ慦㑢㜰㠷换㙣㘴扥捤ㄴ㑦㐲ㄴ㍥〵㌱㜵㘲㈸㠲摤昵㌷扡㄰㤲摦ㅢ㈹㕢㍤攵收㠰㙤㡦晡㡡愶㠶敡扡㔸戴〱ㄷ愳捡㠲㠹攰搸㙡㕣㔷㠸慢愰慦㝥㑡戴戴㌱攱慢㥦ㄸ挶㥦挲晡ㄹ愱㠵愱㘰愲ㄴ㐷攳㐴挷晡㈹戸㈶㈱㠷换㐹㌵㑢昲敢捤换〹㘵愱㜸戵挱敢づ㤳㜰昴㔹攲㐳〹㠷搳挲㝡ㅥ㑦㐲㑢ㄲ㑣摤扥扥㍣㠸敢ㄶ〹〳㑥晤㈴捡㉣㌱戲愳搴搹搱㝥㑢㐳㠶㘲㈹㍡戲㜴㤰ち㌳㔳づ㌷㄰㝣㔱攲㕢㌶捦㤲改㍢捡慣㐴㌸ㄲㅦ㘰愱㍢愰㉣㡡㡢㔲㈱戹ㅣ㐷搴㝤㍥㙣㐷扥㡣㕣愵敦捦扣㜰㌱慤扡捡㑣㡢㔵㤹㄰㡢㌶㉥摣ㄷ戹㝥慢㍣捣㤵㘳㙣㠱㔸晦㥦㍢㐷散㝦摤扤扦㔸㝦捦挲㥥㈲㡢敦㘹ㄸ戵㘳〸㝢愸摡っ〷扡攲㡦㉣挶戳昸攳㌷ㄸ㘷㌴㐳戸㙤昹㈵愸搶ㅥ㙣㍤慥扦攴挳扦戰ㅥ㐸捣㡣㠵攴㠲㔲㠱㈸㑤ぢ㐳ㅤ敢攷㐴㘳ぢ慡愲搱〵摣㌰㍡㠹ㄶ慦ぢ㠵ㄲ扣㑡搳挱扡㈸挵戲㔲慡㕤扢㤴敢㉥㡥换㌹晢㈱扦㙦㉢㐴挷戱㤱㐸挰捥ㄸ昷㙤㐳㔵㍢㝣愹昸㕥㐴㘱㑦㡣ㄸ㉢㌱戶慥ㅣ㍣㜰搰挰㠳〷づ㍤㜸搰攰〱㑢㈲昱㝡㌵ㄸ㍤攴㔵㤳㔸改㠱戳㙦㍢晦晢㘳㉥㥥昲㐹㡦ㅤ㝦敤摡㕥つ戲っ慥敢㌴〷㈰㕤〰ㅦ攳㘵㡡㔷㈸㕥愵㜸㡤攲㜵〸搵て愱㍣㕡愱㥣扡ㄸ㝦㠵㙥扣㐹昱ㄶ〴㡥㌳〲戲㜹挸㔱㝤㔰挵挳㡥昱㌶挵㍢㄰㡡㤷㜷戸㠷收ㄸ敦㐲㜸搲晣ㅥ㡣扡昳㥣㤶昳搴㘶㜸㘰㡤㤲慢㘴扣㡦ち扦挱㐰㌷捦㘲㔳〷挱㐶慥つ㘲㙢㄰㑤㠳㐸慡ㅥ㐸愳㐵慣扢㘵㜰㕤㠰敡㡦戰〰攳㍦愵搸㐱昱ㄹ挵攷ㄴ㕦㐰愸㉥〸搵㈳昶㙦晡㝣㐹戱ㄳ㈲つ戱㠳㔱㈵㠸㝤㐵㠷慦㈱搴㈱㄰㈶㘲摦愰攴㠹搸户㌰扡捦〲㕡捥㠸㥡㘱挷㍡戵攰昵ㅤ㉡晣〶挳摣㜸㠹㑤つ㠴㑤㠷㔷慥〵㡢㙢ぢ㔳㤶挱㜵㘵㙤㌰㌲〵搸㔲㡥㠲攰攱捡挸愵㘸㐷挱㕢〷敡愷㥦扤昰昲搱愷㍤㐵〱㐴ㅡ㕥㐳㤰戴㈷ㄳ晢改搰〱㐲つ㠳㙡攲㔵〸搵ㄳ慦㡥㌰㝡㕤㈳换戰㤵ㄵ㈱捣㙦㌰搸㡤㥡搸搴愱㘸㕦㠷摡㘷攸愱㜶㉢摢㘱ㄹ㕣㤷っ㠷㈳㔳〰ㅦ愳ㅢ㥢敢㑥搱㠳㘲㉦㡡扤㈱搴㐷㥥愸敤㑢㥦晤㈸〲㄰㘹愸ㅤ㡥愴㍤㤹戸ㄷㅤ㝡㐳愸ㄱ㔰㑤搴㑡愰㝡愲戶㍦㡣扡晤㌲挳㜶搶〷㈱㝥㠳㠱㙥挴挴愶㐶愲㙤ㅤ㘲慦㝡㈱昶㡡㘵㜰㕤ぢ㍤ㄲ㤹〲昸ㄸ〳搹摣㈰㡡挱ㄴ㐳㈸㠶㐲愸慤㥥㠸ㅤ㑡㥦挳㈸㠶㐳愴㈱㌶ㅡ㐹㝢㌲昱ㄱ㜴ㄸ〱愱挶㐲㌵ㄱㅢ〹搵ㄳ戱㔱㌰㝡㙤㘷㉤攷攸捤㐸㤶戲㜷㡥㐶㤸摦㘰戰ㅢ㌵戱愹㜱〸搱愱昶愸ㄷ㙡㡦㔸〶搷㐵摥㌲㘴ち攰㘳㑣㘴㜳㤳㈸㡥愶㤸㑣㌱〵㐲㙤昰㐴敤ㄸ晡㑣愳㈸㠷㐸㐳敤㈸㈴敤挹挴㌳攸㔰〱愱㈶㐰㌵㔱㥢〹搵ㄳ戵㔹㌰戶㜶㤱戹ㄹ愹㔲㌰㥢㠳㈰扦挱㔰㌷㘶㘲㔳ㄳㄱ愲挳散㐶㉦捣㙥戰っ慥慢搷㐷㈳㔳〰ㅦ攳㘴㌶ㄷ愴愸愲愸愶愸㠱㔰㙢㍣㌱慢愵捦㍣㡡㍡㠸㌴捣㈶㈳㘹㑦㈶㥥㑦㠷〵㄰㙡㉡㔴ㄳ戳〸㔴㑦捣敡㘱昴扥㥣改㌹㍥㡡㈲捣㙦㌰搸㡤㥡搸搴㌱㘸㕦㠷摡〵㕥愸㥤㙦ㄹ㕣㤷攵换㤱㈹㠰㡦戱㠴捤㌵㔱㥣㑡㜱ㅡ挵改㄰㙡戹㈷㙡㘷搲攷㉣㡡愵㄰㘹愸㑤㐷搲㥥㑣扣㡣づ换㈱㔴〵㔴ㄳ戵㜳愰㝡愲㜶㉥㡣敥敦捤㤶㙢㕤捤㐸㤳戲㤵慤㐰㠰摦㘰㤸ㅢ㉦戱愹㤹〸搱攱ㄵ昳挲敢ㄴ换攰扡摦㌰ㅢ㤹〲昸ㄸ㤷戱戹换㈹慥愰戸㤲攲㉡〸戵挰ㄳ慦㙢攸㜳㉤挵㑡㠸㌴扣收㈰㘹㑦㈶㕥㑤㠷㌵㄰敡㌸愸㈶㕥㙢愱㝡攲㜵ㅤ㡣㥡ㅢ〸ㄹ扥〰搶㈳挲㙦㌰捥つ㤸搸搴昱㘸㕡〷搸昱㕥㠰ㅤ㘷ㄹ㕣㌷㔲㑥㐴愶〰㍥挶敤㙣敥づ㡡㍢㈹敥愲戸ㅢ㐲㔵㜸〲昶㐷晡摣㑢㜱ㅦ㐴ㅡ㘰㜳㤱戴㈷ㄳ㍦㐰㠷つ㄰慡ㄲ慡〹搸㠳㔰㍤〱㝢〸㐶昷〶㤶㘱㠸戱ㄱ〱㝥㠳㘱㙥扣挴愶㑥㐶换㍡扣挶㜹攱㌵搶㌲戸敥㄰㔵㈱㔳〰ㅦ愳㤹捤㙤愶㜸㤲攲㈹㡡㉤㄰㙡㠴㈷㕥捦搰攷㔹㡡攷㈰搲昰慡㐶搲㥥㑣晣〲ㅤ戶㐲愸㄰㔴ㄳ慦㙤㔰㍤昱㝡ㄱ㐶捤〶㤶〱戰㤷㄰攱㌷ㄸ攷〶㑣㙣㡡昷戳㜴㠰ㅤ攴〵搸㠱㤶挱㜵敢慢づ㤹〲昸ㄸ㙦戱戹扦㔱扣㑤昱づ挵扢㄰慡户㈷㘰㝦愷捦晢ㄴㅦ㐰愴〱挶扢㘸㍤㤹㜸㍢ㅤ㍥㠲㔰ぢ愰㥡㠰㝤っ搵ㄳ戰㝦挰攸㝤摣攷㡥挹㥢ぢ捤㐸㤶㜲ㅣ晢〴㘱㝥㠳挱ㅥ㌶ㄵ㐱㠸づ戵捥㕥愸敤㘶ㄹ㕣昷昴ㅡ㤰㈹㠰㡦戱㤳捤晤㠷攲㉢㡡慦㈹扥㠱㔰ㅤ㍣㔱晢㉦㝤扥愳昸ㅥ㈲つ戵㈸㤲昶㘴攲ㅦ改昰ㄳ㠴㍡〵慡㠹摡㉥愸㥥愸晤て挶㑣昷ㄴ㥢㤱㈶〵慦㕦㄰攰㌷ㄸ收挶㑢㙣㉡㠶㄰ㅤ㕥㍦晥捦㘳攴晦㠳㘵㜰摤慣攴㠵扥〰㍥㐶㐱㉥〴愷㐶ㄹ㝥㡡づㄴ㠵㄰敡㙢㠴敡捦㉦㍢搱愷㠸㠲戳愸搲昰㙡㐴搲㥥㑣摣㤹づ㕤㈰搴㘲愸㈶㕥㕤愱㝡攲戵㍢㡣摥㕢ㄹ昷㑥敤㔶戶㈷挲晣〶㠳摤愸㠹㑤㉤㐱晢㍡搴戶㝢愱昶愱㘵㜰摤㠵㍤ㄵ㤹〲昸ㄸ〱㌶搷㤳愲ㄷ㐵㙦㡡ㄲ〸昵㡥㈷㙡〷搰愷て㐵㕦㠸㌴搴㑥㐳㔲㐱敤㈰㍡昴㠳㔰㘷愰捡㐴慤㍦㔴㑦搴づ㠶㔱㜳挷捦㜳愷㍣〴晥㝥㠳㔱㙥戸挴愶捥㐴挳㍡戸㕥昰㠲敢㜹换攰扡扤扣ㄴ㤹〲昸ㄸ挳搹摣攱ㄴ㐷㔰㡣愰ㄸ〹愱㥥昲㠴敢㐸晡㡣愶ㄸ〳㤱〶搷搹㐸㉡㜰㡤愳㐳㈹㠴㕡㡥㉡ㄳ慥㌲愸㥥㜰ㅤ〵愳敥昴㌲挳㠹搲〴㠴昸つ〶扡ㄱㄳ㥢㍡〷㙤敢㄰㝢挰ぢ戱晢㉤㠳敢扥㌹㙦㤷〷昰㌱捡搹摣㜴㡡ㄹㄴㄵㄴ㌳㈱搴㕤㥥㠸捤愶捦ㅣ㡡㘳㈱搲㄰㕢㠱愴㠲搸昱㜴㌸〱㐲昱㤶扢㠹搸㠹㔰㍤ㄱ㥢ぢ愳昷㝤晢㘶㈴㐹㌹㠸㔵挲摤㙦㌰挸㡤㤶搸搴〵〸搱愱戵摡ぢ慤㔵㤶挱㌵㈱攰㈲㘴ち攰㘳搴戱戹㌰挵㝣㡡〵ㄴㄱ〸㜵愵㈷㕡つ昴㠹㔲㉣㠴㐸㐳敢㘲㈴ㄵ戴㘲㜴㠸㐳愸㑢㔱㘵愲㤵㠰敡㠹㔶㈳㡣㈹昷戴㌳㙣㔸㡢攱敢㌷ㄸ攱㠶㑡㙣敡㌲㌴慡㠳㙡㤹ㄷ㔴㘷㕢〶搷㑣㠷㉢㤰㈹㠰㡦戱㤴捤㥤㑤戱㡣㘲㌹挵㌹㄰敡㌴㑦愸晥㐰㥦ㄵㄴ攷㐱愴㐱㜵㈵㤲ち㔴ㄷ搰攱㐲〸㜵㌵慡㑣愸㉥㠲敡〹搵挵㌰㝡㑦㠵挸㌰摣扦ㄴ㠱㝥㠳攱㙥摣挴愶慥挱ㅡ攸㜰㥢敦㠵㕢搸㌲戸愶㜰慣㐴愶〰㍥挶㑡㌶户㡡㘲㌵挵ㅡ㡡戵㄰慡摡ㄳ户㜵昴㔹㑦㜱㍤㐴ㅡ㙥慢㤰㔴㜰扢㤱づ㌷㐱愸㌵愸㌲㜱扢ㄹ慡㈷㙥户挰攸㡤㕢换ㄴ㤲㘶愴㑢搹㌵㙦㐳愰摦㘰戸ㅢ㌷戱㈹㑥㌸搱攱㌶挳ぢ户改㤶挱㌵㌷㘵ㅤ㌲〵昰㌱敥㘳㜳昷㔳㍣㐰戱㠱攲㐱〸㌵搹ㄳ户㠷改戳㤱㘲ㄳ㐴ㅡ㙥敢㤱㔴㜰㝢㤴づ㡦㐱愸ㅢ㔰㘵攲昶㈷愸㥥戸㍤づ愳收㥢搲㥥ㅢ搳㡣㉣㈹㜰㍤〱㝦扦挱㈸㌷㕣㘲㔳㌷㈲㐴〷搷ㄱ㕥㜰ㅤ㙥ㄹ㕣㤳㙥㙥㐶愶〰㍥挶㜳㙣敥㜹㡡ㄷ㈸戶㔲㙣㠳㔰㐳㍣攱晡ぢ㝤㕥愲㜸ㄹ㈲つ慥㕢㤰㔴攰㝡㤵づ慦㐱愸摢㔰㘵挲昵㍡㔴㑦戸摥㠰搱㝤㔶㤹攱㜰昶㈶〲晣〶挳摣㜸㠹㑤㜱㡡㤰づ慦㕥㕥㜸昵戴っ慥搹㐴㜷㈲㔳〰ㅦ攳〳㌶昷㈱挵㜶㡡㡦㈸㍥㠶㔰㝢㜹攲昵㑦晡㝣㐲昱㈹㐴ㅡ㕥㜷㈱愹攰昵ㄹㅤ㍥㠷㔰昷愰捡挴敢ぢ愸㥥㜸晤ぢ挶㤴㈳㝦㠶㉢㍣㕦挲搷㙦㌰挲つ㤵搸ㄴ攷㍥改愰昲㝢㐱㘵㔸〶搷㌴愹晢㤰㈹㠰㡦昱㍤㥢晢㠱攲㐷㡡㥦㈸㜶㐱愸㜶㥥㔰晤㑣㥦㕦㈸㌸搳㉡つ㉡捥戸ㄲ愸㜲㘱㌳摡㐱愸つ愸㌲愱捡㠳敡〹ㄵ攷攸㙢㙦戱㝡づ昲摢㈳挲㙦㌰捥つ㤸搸搴㠳㘸㕡〷搸㔷扢㍣㑥㡤晥㘳ㄹ搲攷㝦攵㙦㐴愶昴ㅢ摤㌲㔹㍥㌹㌳挶㌱攷愶ㄳ㥣㝤戵戳ㅡ挲㠹㜸㠷摡戱㡤㠹攸昸㜰愲㉣㥥㈸慣㠵㐰㔱㐲㝡挸㈴ㄲ㐷㔰扦摡搹攱搰攲㤹戸㥤扢㥦摢㠴攷〸㑡ㅢ攳㠹愸摣挳摦搷㙤㉦㡢ㅥㄳ㑤㤴㠵攳ぢ㈳挱愶ㄲ㡤搹戴捣愹ぢ㌵㘰㔶㔳っ㤳㥢㕡㜳㡡㉥㕣ㄸ慡搱慣㘳㐵戴㌱㔶ㅤ㥡㔴昶㝢㤸ㄷ愵捣挹〸搸㔶㌹㈳㑡敤敦㍤て挸㠱晢㍥攰㈶ㄷ昷挱搵慦㥢㔶攳㉢挶收搶づ昳攸昰㜴て㑡㌹㙣㤸ㄳ㕤㌰搳㘵㔳慢㥢㠸㘳愶㔵〷㌸晢㙢㐱慢㔹搷搱㥡捡㌷愹㈱ㅥ慥〹昹㉤㙤㙡戸愱㤳㔵㥣搶㤸㐸戱〴㤷㜴戱㉣戸㔹㍦慤〱搴㔷〷㘳㌵扦〷㔶搰㌱㉣㈶㈵捡㠷㝦扦づ㘸㌳㑤㑥捥㑥㕥攴攰戲昳㉣ㅣ㙢㠸㌳愷㌳㘹攷㑤㈴㜷㐵ㄴㅣ㤳搴㡡攰摦㤱㔰㈷慢ぢ愸㑤つ〵ㅢ㠴㠱㡡㐴㑤㔹㘸㔱㈷昱〸㘱攳挶愳㍢㤱㔰㤷㔴㔵愶搶ㄸ戵㘳慢攲搱㐸㘳㈲搴㈹㔹㤲㥤摣愸㥤ㄱ㡡〴㌹攱戰㌰㔹㉡慦㑥㘰㑡㘶㌲ㅦ㈷ㄳ晥㝥搸〱㈲㜹ㄶ㐳㑡㌸昲㘵㌸戶愵㜶㠲晢捦慦㘴ㄴ㐴搶捡昲敦搱㙡昵㉡㉥㜷㡣捥戱ぢ攴ㄶ攴㜲㥡㕡昶㌳ち戹ㄷ㜵戱㈷扡㥡㐷㌷㌹㜰ㄵ摡㜵㥣捣搷戱㔶㡥㜹㤸戱换愷戶㡡戸摢㐴昰㌸㕤㈲㕣ㅤ㡣㐴㥡㍡搵㑥㙡愸㡥㌴搶㠴愶〴慢㐲ㄱ晢㜸ㅤ㡤搵晦㑥昸捡攳收㙦㜲㤵〱ㄷ㙢㥡攵㈴㍣收㘸捦㕦晣搵㠷㌸㕣愵戳扦㔲㤱挳愴攵㌱慣挴晦㜹敡愶ㅦ㐱㥤㕢㈶ㅥ换㠳㜰㌸愴戹慡㜸㉣攳晣戶攴散㑦搹摢ㅣ㙥㔳愲㔳愲㤸㤹㕢攳愸㥡ㄸ㌶慢㝥㌷晢㤴㔰攴昳昹㝥敤ㄷぢ戰挲戲搳㥡㈸㠳㠳㥤愹㡦收〸㡢㍢挶攳搰搳㘷挶㌹〶㈰昲㥤㉦〷挰㘲㌸ㄶ昱攸㘵づㄸ㘶㠶ㄳ㤱㔰㠷㕡戱㑢戹㠰扢〳搱㙣㕦㍢戳づ㌳挹捡㍡搶㑥㠸㠵㙢㈲攱㠶㄰〷ㅦ㤸㈹捥㠷て愷㠴收㘱㑥㜳㜹㌴ㅥ收昳戴ㅤ㙢㘷挶㠲つ昱㠵㥣㑣㔸摤搴㌹㐵ㄳ戲昲㙢挷㠵ㅢ戰昳㤸㙤戲㕣㔴㕢㔱ㄷ㕤㡣㐷㜲ㅢ敢ㅢ㈶〴ㄷ挶㝦ㄷ㐴㔹㕦㈵㐰挸摣愳㜲㔵㙥慥㉡挸㉤昸戵摦㔱搸挲㤱㤲搳㡣㜲㈹㉣慡晥㡣㔲㠶㝤㤵㉣㔹㌳捡戹慦㜲㥤㔲ㅥ㌱搵㑥㜳㑤㍥捦捣攳慦搱ㄵ㍢㘸攱敥㄰㤳㈶捣㥡搴昲ㅣ挲晦捦挳挱昹㑦㈰㜱㠶㙦〱搹㉡㤲㜳㥥㜷㠷㜳㈷㜳㑢㘱ㅤ㌷ㅣ㐳〸愷㤶扥昵昹㙢挵㠷ㅢ㈲扥㌸改捥攲㜸㑣㔳㉤挴㝥㡦愳㉥㘶昷攲㜰摢挹㔴㌸㡡慢て㐶攲㤶つてつ搶〷戹㘵㜱慢慣挰㈱㍢㔴㈰㐳㙡ㅣ㐸㡣㕡〸搹晣慣慡攰ㄲ㔴〵㤷㐸ㄵ扥㠹昹ㅣ㠳㤴㤹㉢㍡㉦ㄸぢ㈷敡敡挳搵〵㔴昸慣挱敦㘲㤳挴ㄶ㤴〷㌰敤㐵戶㑢㡣㑦搳愷ㄲ㥢戳㕦挱昶〰㥣㌲㄰㍡戲㡦つ㌷㔷扥扥搵慦㥣㈴㡥攱慢挱〱慤戱㈷㐴㍥㑥改㔰㘱敤㈳㡥㜱ㄷ㙡攴ㄸ㤴户ㄹづㄹ愷敥戶㠷㠳㝦㑡㌴㔸㌳ㅥて㥥㐴㘳敤慤愷搶ぢ㐰㈲㡦ㅤ戱㘲捥搶㉥挵㈳つ㜸㔴㘲ㄱ〶扡戱〲㔶㔴㘰㈲㜴ㅥ攷㜹晢㑣戶戸㜷收攴攷㜷㈸搰戵㌵挹捥㔵㘲㑤㕤㜵㍥昵㍦挹㤵晦㡢改挳㜱〸㘵〷㌸㔶㌰扡戱戳摤㈱搴㤳㔰搹㥦㌴㠷ㅥ㜴搸㡢㘸㙣㠱㌱㝤㝦昰㥣摡㡣㠰㥣晣㝡㑥戹㉥愸㘷㜷㌰愶昰㘱㈲㌶愶㙥〳ㄲ㕦㠷㠲愷㘰㌷昶㠶搷㡢摢戶㡤㐲㌹㐷㍤ぢ㘱户捦つ挰㕡挱㝤攰㘳散ぢ愱㕥㐶㈵捦㍡㝤晢㔱㉢挱敤㈵晣㜵㥣㙦㈸捥㤸攵㌹㠷扤㌸ㄸ㌳昹㔲慦挲挴搱㌲て㔲慤㡤扣搴㙢昰攳攸ぢ户戰戸づ捤㈸搹㕦晦敡㜵㈸ㅣ〲㤸㡢攷㤷㤴攲戴㕣㝥㔱攵㘸て㡣敡㑤㔸㜸㜰㌴㝡戳㑢㙦愱挴㠳づ㌷㐲昶搱搸ㅦ愲搵㡤㔰扤㡤〸ㅢ㌸㐶㕢挰ㅤ挰っ㝤㤸昷ㅤ扤㐳㕦㍡ㅣ㐸〷㑥〱㈶扢挶㐱搰㤲㠴扣敦〸㜳㄰搲㡦㘱晤ㄹ挶㐹户㐲挸挱搰捣㔳挰〱㈸㌹㈹攱㤴摣捣㤴㝣〶㡦慣㈹昹ㅣ捥㈶㈵㠷㜰㉤㥡愱㈶㈹攱㜴摦㙣㈸昹㌷晣㌲㔰昲㈵捣㐲挹㈰㜶㜱㈷㌴㥢ㄲ昶搲ㄸ〲搱㍡㈵㕦㈱㑣㐳挹㔰㘶ㄸ挶扣㕦敢ㅤづ愵挳㘱㜴昸〶づ㐲挹㜰㘸㐹㑡扥㜳㠴㌹㈸㌹㥣㘱㐷㌰㡣ㅢ戶㔰㌲〲㕡㝥㔳㈸ㄸ㡢攳ㅥ㈲捡㑥㔲㜸㐴换㑣㑡㉥㍣戲㈶愵ㅤ㥣㑤㔲㐶㜱㍤㥡愵㌱㜳㤸慣㌸㔸捦㠶ㄴㅦ晣㌲㤰搲ㅥ㘶㈱㘵㌴㍢㔹〰捤㈶㠵晤㌴挶㐲戴㑥㡡ㅦ㘱㥢戱㜲㘹〷戸㜱捣㔰捡扣ㅤ昴づ㘵㜴㌸㡡づ㠵㜰㄰㔲挶㐳㑢㤲㔲攴〸㜳㤰㌲㠱㘱ㄳㄹ搶つづ㐲捡㈴㙡㌸㜰ㅤ㡤扦㑥㐲㌸愵㌸㌳㈱㍤攰㤱㌵㈱㝢挱搹㈴㘴㌲搷㈱㠵㤰扤㘱换㠶㄰捥㕢捥㐰挸㝥㌰ぢ㈱㔳搹愵〰㌴㥢㄰昶搱㤸〶搱㍡㈱扤㄰戶搹㑤㐸㌹㌳㑣㘷摥摥㝡㠷ㄹ㜴愸愰㐳〹ㅣ㠴㤰㤹搰㤲㠴昴㜱㠴㌹〸㤹挵戰搹っㅢ〸〷㈱㘴づ㌴㝢㉦㌹ㄶ㘵㈷㈹㥣戵㥣㤹㤴挱昰挸㥡㤴㈱㜰㌶㐹㌹㡥敢㤱㐲捡㔰搸戲㈱㠵㔳愳㌳㤰㜲ㄸ捣㐲捡〹散攴㜰㘸㌶㈹散愷㌱ㄷ愲㜵㔲㡥㐰搸㘶㌷㈹㈷㌱㐳㈵昳㡥搰㍢㥣㑣㠷㈰ㅤ㐶挲㐱㐸愹㠲㤶㈴㘵戴㈳捣㐱㑡㌵挳㙡ㄸ㌶ㄱづ㐲㑡〸㥡㑤㑡㉤捡㑥㔲㌸㈹㍡㌳㈹㐷挳㈳㙢㔲㈶挳搹㈴㘵ㅥ搷㈳㠵㤴㈹戰㘵㐳ち㘷㕥㘷㈰㘵ㅡ捣㐲㑡㤸㥤㉣㠷㘶㤳挲㝥ㅡぢ㈰㕡㈷㘵〶挲㌶扢㐹㠹㌰㐳㍤昳㔶攸ㅤㅡ攸㄰愵挳㑣㌸〸㈹ぢ愱㈵㐹㤹攳〸㜳㤰㜲ち挳㘲っ㍢ㄹづ㐲㑡㥣ㅡづ㕤昲晡愸㤶㙢扣㉡〸㠷捣㠴㔴挱㈳㙢㐲慡攱㙣ㄲ搲挸㜵㐸㈱愴〶戶㙣〸愹㠵㕦〶㐲收挱㉣㠴㉣㘶㤷敡愰搹㠴戰㡦㐶ㄳ㐴敢㠴捣㐷搸㘶㌷㈱愷㌲挳㘹捣扢㐰敦㜰㍡ㅤ捥愰㐳〴づ㐲挸㤹搰㤲㠴㐴ㅤ㘱づ㐲捥㘲搸㔲㠶㉤㠱㠳㄰㜲㌶㌴㜳捣戵っ㈵攷㍥挲改摣㤹㈹㌹ㄵㅥ㔹㔳㜲ㅡ㥣㑤㑡㤶㜳㉤㔲㈸㌹ㅤ戶㙣㈸攱㥣昱っ㤴㥣〵戳㔰㜲㉥扢戸ㄴ㥡㑤〹㝢㘹慣㠰㘸㥤㤲㘵〸摢散愶攴㍣㘶㌸㥦㜹㤷敢ㅤ㉥愰挳㠵㜴㌸〷づ㐲挹㐵搰㤲㤴慣㜰㠴㌹㈸戹㤸㘱㤷㌰散㌲㌸〸㈵㤷㐲㌳㈹戹っ㈵㈷㈵㥣㌱㥥㤹㤲㉢攰㤱㌵㈵㔷挲搹愴攴㜲慥㐵ち㈵㔷挱㤶つ㈵㥣㤶㥥㠱㤲㙢㘱ㄶ㑡慥㘴ㄷ㔷㐲戳㈹㘱㉦㡤慢㈱㕡愷㘴㌵挲㌶扢㈹戹㠶ㄹ慥㘵摥㌵㝡㠷㤵㜴㔸㐵㠷戵㜰㄰㑡㔶㐳㑢㔲戲摥ㄱ收愰㘴つ挳搶㌲散㜶㌸〸㈵搷㐱㌳㈹㔹㠷㤲㤳ㄲ捥㐹捦㑣挹㥤昰挸㥡㤲扢攰㙣㔲戲㥥㙢㤱㐲挹摤戰㘵㐳〹㈷扥㘷愰攴㕥㤸㠵㤲ㅢ搸挵晢愰搹㤴戰㤷挶㑤㄰慤㔳昲〰挲㌶扢㈹戹㤹ㄹ㙥㘱摥つ㝡㠷㕢改㜰ㅢㅤㅥ㠴㠳㔰㜲㍢戴㈴㈵ㅢㅤ㘱づ㑡敥㘰搸㥤っ㙢㠶㠳㔰㜲ㄷ㌴㤳㤲扢㔱㜲㔲戲ㄹ㉥㤹㈹㜹ㄲㅥ㔹㔳昲ㄴ㥣㑤㑡敥攱㕡愴㔰戲〵戶㙣㈸㜹〶㝥ㄹ㈸㜹ㄶ㘶愱攴㕥㜶昱㌹㘸㌶㈵散愵㜱㍦㐴敢㤴扣㠰戰捤㙥㑡ㅥ㘰㠶つ捣扢㔵敦昰㈰ㅤㅥ愲挳㌶㌸〸㈵て㐳㑢㔲昲㤲㈳捣㐱挹㐶㠶㙤㘲搸㕢㜰㄰㑡ㅥ愱㠶㉦昷㐷昱搷㐹〸愷搵㘷㈶攴㙤㜸㘴㑤挸㍢㜰㌶〹㜹㡣敢㤰㐲挸扢戰㘵㐳〸攷敥㘷㈰攴㝤㤸㠵㤰挷搹愵て愰搹㠴戰㡦挶ㄳ㄰慤ㄳ戲ㅤ㘱㥢摤㠴㌴㌳挳㘶收晤㐸敦昰㈴ㅤ㥥愲挳挷㜰㄰㐲戶㐰㑢ㄲ昲㠹㈳捣㐱挸搳っ㝢㠶㘱㍢攱㈰㠴㍣㑢つ㠴㍣㠷扦㑥㐲㌸㘳㍦㌳㈱㕦挱㈳㙢㐲扥㠶戳㐹挸昳㕣㠷ㄴ㐲扥㠱㉤ㅢ㐲昸㔸㐰〶㐲扥㠳㔹〸搹捡㉥㝤て捤㈶㠴㝤㌴㕥㠴㘸㥤㤰ㅦㄱ戶搹㑤挸㕦㤸攱㈵收晤㐹敦昰㌲ㅤ㕥愱挳㉥㌸〸㈱慦㐲㑢ㄲ昲㡢㈳捣㐱挸㙢っ㝢㥤㘱〵戸〲㉣㠴扣㐱つ㠴晣ㄵ㝦㥤㠴昰㤱㠰捣㠴昸攱㤱㌵㈱ㅤ攰㙣ㄲ昲㈶搷㈱㠵㤰㐲搸戲㈱㠴捦ㅤ㘴㈰愴〸㘶㈱攴㙦散㔲㌱㌴㥢㄰昶搱㜸〷愲㜵㐲㍡㈳㑣㐳挸扢捣昰ㅥ昳㜶搱㍢晣㥤づ敦搳愱㉢ㅣ㠴㤰て愰㈵〹搹搳ㄱ收㈰攴㐳㠶㙤㘷㔸〰づ㐲挸㐷搰捣㙦㤱㡦㔱㜲㔲挲攷つ㌲㔳搲ぢㅥ㔹㔳搲ㅢ捥㈶㈵晦攰㕡愴㔰㔲〲㕢㌶㤴昰愱㠶っ㤴昴㠱㔹㈸昹㠴㕤散ぢ捤愶㠴扤㌴㜶㐰戴㑥挹㐱〸搳㔰昲ㄹ㌳㝣捥扣晤昴づ㕦搰攱㕦㜴攸て〷愱攴摦搰㤲㤴ㅣ攲〸㜳㔰昲㈵挳㜶㌲㙣㌸ㅣ㠴㤲晦㔰挳㍥昲ㄵ晥㍡〹攱ㄳつ㤹〹㌹〲ㅥ㔹ㄳ㌲〲捥㈶㈱㕦㜳ㅤ㔲〸ㄹ〹㕢㌶㠴昰戱㠹っ㠴㡣㠶㔹〸昹㤶㕤ㅡ〳捤㈶㠴㝤㌴扥㠳㘸㥤㤰㜱〸搳㄰昲㍤㌳晣挰扣愵㝡㠷ㅦ改昰ㄳㅤ捡攰㈰㠴散㠲㤶㈴㘴㠲㈳捣㐱挸晦ㄸ昶㌳挳捡攱㈰㠴晣〲捤摣㐷㜲攸攸㌸㙢攷㈳ㄳ㤹㈹㤹〱㡦慣㈹愹㠰戳㐹〹㙦摤愵㔲㌲ㄳ戶㙣㈸攱㜳ㄹㄹ㈸㤹〳戳㔰搲づ㉤愸㘳愱搹㤴戰㤷㐶㍥㙡㕢愷攴㜸㠴㘹㈸昱㜱愵摢㌳敦〹㝡㠷〲㍡昰敤搷敡㐴㌸㙣〱㤶㠶ㅦ㕡㤲㤲㑡㐷ㄸ敡敤㍢㌰ㅤ㔰㌶ち㈱㔴ㅤㅣ㠴㤲㡥搴戰㡦㜴愲㥢㠳㄰㍥㤵㤱㤹㤰昹昰挸㥡㤰〵㜰㌶〹㈹攲㍡㌴㑢㘳搶㈵昹〸㙣搹㄰挲㐷㍦㌲㄰ㄲ㠵㔹〸搹㡤㕤㕡〸捤㈶㠴㝤㌴扡㐰戴㑥㐸っ㘱ㅡ㐲扡㌲挳敥捣ㅢ搷㍢散㐱㠷㍤改㤰㠰挳ㄶ㜴捦攸〶㉤㐹挸㘲㐷ㄸ敡㙤㐲扡愳㙣昴㠰㔰㑢攱㈰㠴散㐵つ㠴散㑤㌷〷㈱㝣昶㈳㌳㈱换攰㤱㌵㈱换攱㙣ㄲ戲て搷愱㔹ㅡ戳〸㌹〷戶㙣〸攱〳㈶ㄹ〸㔹〱戳㄰戲ㅦ扢㜴ㅥ㌴㥢㄰昶搱攸〹搱㍡㈱ㄷ㈰㑣㐳㐸㉦㘶攸捤扣ㄷ敡ㅤ㑡攸戰㍦ㅤ㉥㠲挳ㄶ㜴捦㌸〰㕡㤲㤰㑢ㅤ㘱愸户〹改㠳戲搱ㄷ㐲慤㠴㠳㄰㜲㈰㌵㄰㜲㄰摤ㅣ㠴昰愱㤲捣㠴慣㠶㐷搶㠴慣㠱戳㐹㐸㍦慥㐳戳㌴㘶ㄱ戲ㄶ戶㙣〸攱㤳㉢ㄹ〸㔹て戳㄰㜲㌰扢㜴㍤㌴㥢㄰昶搱㌸〴愲㜵㐲㙥㐴㤸㠶㤰㠱捣㌰㠸㜹㙦搲㍢っ愶挳㄰㍡摣っ㠷㉤攸㥥㌱ㄴ㕡㤲㤰摢ㅣ㘱愸户〹ㄹ㠶戲㜱㈸㠴扡てづ㐲挸㘱搰捣㙦㤱攱㜴㜴㔰挲攷㔵㌲㔳昲〰㍣戲愶㘴〳㥣㑤㑡づ攷㕡㌴㑢㘳ㄶ㈵て挲㤶つ㈵㝣㈸㈶〳㈵ㅢ㘱ㄶ㑡㐶戰㡢㥢愰搹㤴戰㤷挶㈸㠸搶㈹㜹ㄴ㘱ㅡ㑡㡥㘴㠶搱捣晢㤸摥㘱っㅤ挶搲攱㑦㜰搸㠲敥ㄹ攳愰㈵㈹㜹挲ㄱ㠶㝡㥢㤲㔲㤴㡤㌲〸昵ㅣㅣ㠴㤲愳愰㤹㤴㡣愷愳㠳ㄲ㍥ㄳ㤳㤹㤲ㄷ攰㤱㌵㈵㕢攱㙣㔲㌲㠱㙢搱㉣㡤㔹㤴㙣㠳㉤ㅢ㑡昸攰㑤〶㑡㕥㠲㔹㈸㤹挴㉥扥っ捤愶㠴扤㌴㈶㐳戴㑥挹慢〸搳㔰㌲㠵ㄹ愶㌲敦㙢㝡㠷㘳攸㌰㡤づ慦挳㘱ぢ扡㘷㤴㐳㑢㔲昲愶㈳っ昵㌶㈵搳㔱㌶㘶㐰愸て攰㈰㤴㔴㔰挳㘱㙢㈶摤ㅣ㠴昰愱㥢捣㠴㙣㠷㐷搶㠴㝣〴㘷㤳㤰㔹㕣㠷㘶㘹捣㈲攴㘳搸戲㈱㠴㑦昶㘴㈰攴ㄳ㤸㠵㤰㌹散搲愷搰㙣㐲搸㐷攳㌸㠸搶〹昹っ㘱ㅡ㐲㡥㘷㠶ㄳ㤸昷㜳扤挳㠹㜴㤸㑢㠷㉦攰戰〵摤㌳㑥㠲㤶㈴攴㑢㐷ㄸ敡㙤㐲㉡㔱㌶㑥㠶㔰摦挳㐱〸〹㐲㌳昷㤱㉡㍡㍡㈸攱挳㍤㤹㈹昹ㄱㅥ㔹㔳昲ㄳ㥣㑤㑡慡戹ㄶ捤搲㤸㐵挹㉥搸戲愱㠴㑦㄰㘵愰攴ㄷ㤸㠵㤲㄰扢㤸㠳〱慦㑤〹㝢㘹捣㠳㘸㥤㤲㕣㠴㘹㈸愹㘳㠶㌰昳戶搳㍢捣愷挳〲㍡攴挱㘱ぢ扡㘷㐴愰㈵㈹㘹敦〸㐳扤㑤㐹㍤捡㐶〳㐴晥㙥㜰挸敥㔱ㄴ捥㤶㉢㜶㍣ㅦ挴㔹㤴昱摤㙡愷㌷〶㈳昸昱㤰㘹㤸愸㥥㘰搵敦㘱㥡㘲㥥昹戸㐰晡慢慡㔳㝦㔳〴㑦搹㐸ㄷ㑥㤸扢㉦㝡㤶㡥㐱慡慦搵户㌸㍤㝦摤攳〴晥晣换㝦晡攵㤷散㕡㔱㘸愵晤㈲扥ㅥ戵戲㌲愷㠰㙤㠲㈴㔰挷㠹搵㥤㔱捣㌰㕢㌷㙤㘶㍤㌳㜵㘹㤹㜲挸㘹愴晤㈲晣㤹㈱摤㕣挵搴㐹扢ぢ戱㜵愸慥㘸㡤㌹㡣㔳愸㔹㉢㤲扦㈷㙡㕢㥤昱㠹〰㍣㌲挴戹㥦ㄵ㠹愶〸收摢戲挸ㄷ㝥㥡㈵㑥㍢㌴捤㔸扤㘸㉣て㑦㐷愵扦攵㌷ㄹ晢㌰㔲㜵攸㥡昶㔶㘵〹愳㘵㜷慣㑤晥㈵〰搷㌳㍥ㄵ㑦挶㜰昱挵戱㡡㕤愷㠶慢㘳搱㜸戴㌶㠱ㅦ㕢㘹㠸〷昸㥥㙤扣〷㘷攰搸晣㡢㤰㔱摢㈶㍢㤶搷挰㕦挸ㄱ㡡晣ぢㅡ愲㡢ㅢ㘴㙤昲攳㝣摤戸攰搵扥㍤㥢攱㈳〵戲昴〶㜸挵摤戰愲㕣㡡扢摢㠵ㅥ㜶㘱㉦慢㔰戴㌷ち㡣昲㠹攷㙦㈸㡡昷㐱㘶戶攲㙢㐴〷㜶㉢ㅤ㔷㤹晡攳㍦扥㐵愸㉥㐴戵㑣㙡㥤㠱㌷㜳晢ㄶ愳愶ㄳ㙡ㅣ㌳挰㡢昷戵戲ㄸ㑢㘰㌴㝡㈲㥦ㄱ㠰㔰〱搴昳㔰攲㔷攷〲㌷㙥敡㙣㑢㌶㔹搵ㄳ㐵㙥戶挶改㠸㔱扤㔱ㄲ㠸捥愰〶㈷㍡慡晤㈱戹㔹愹㘵〸㈵㤹愸捣昱㥤〵ㄷ㑦㠶搴㔲戸㤱愵㔴㤴て㘰㍥㉣挵㝤散㐲㕦扢㜰愰㔵㈸㍡〸㠵戶㐱戹ㅦ㌲戳ㄵ㠳㈸ㅢ挴搴㈰㡣挵晤敤晡㜳㔸搵㠷ㅥ〷㐰愸〱愸㌷㜱㙢㐲㑦㔲㜱㍢〴㌶挱敤㍣挴愸㐱搰〴户昳愹㈱ㄶ㝡㡥ㅡ〲㈹戸㉤㐲戸㡤㥢挱㉤㥢ㅢ戱㑡㘸㈱ㅡ捡㔰㉣挵挳散挲愱㜶攱㌰慢㔰㌴ㅣ㠵戶㠱攸㜰㘴㘶㉢改㄰ㅤ㘱搷㕦㐶㠸昸㡥㔷愳㍦㠴ㅡ㠹㝡ㄳ愲㝡ㄷ㐴愳㘰ㄳ㠸慥㈲㈸愳愱〹㐴㔷㍢㈱ㅡ㡢㕡㠱㘸扥ㄳ㈲㙥㕡〲㔱㥤ㄶ愲㜱〸攲㔲㕣㙡ㄷ捡散挲㔱㔶愱㘸㍣ち㙤〳搱〴㘴㘶㉢改㄰㑤戴敢搷ㄲ愲㈱昴攰㠳ㅣ敡㘸搴㥢㄰〵㕤㄰㑤㠶㑤㈰扡㥥愰㑣㠵㈶㄰摤攰㠴㘸ㅡ㙡〵愲㤳戴㄰㥤愸㠵愸ㅣ㐱㕣㡡愷摢㠵ㄹ㜶愱挲㉡ㄴ捤㐴愱㙤㈰㥡㠵捣㙣㈵ㅤ愲搹㜶晤敤㠴攸㜰㝡っ㠷㔰挷愲摥㠴㘸㤶ぢ愲攳㘰ㄳ㠸敥㈶㈸㈷㐰ㄳ㠸敥㜱㐲㌴ㄷ戵〲搱っ㉤㐴攵㕡㠸㑥㐲㄰㤷攲㑡扢㜰戲㕤〸㕡㠵愲㉡ㄴ摡〶愲㙡㘴㘶㉢改㄰搵搸昵てㄲ愲搱昴㌸ㄲ㐲搵愲摥㠴㘸㤲ぢ愲㜹戰〹㐴㥢〸㑡ㄸ㥡㐰昴㠸ㄳ愲〵愸ㄵ㠸挶㙢㈱㉡搳㐲ㄴ㐱㄰㤷攲㝡扢搰㘰ㄷ愲㔶愱㘸㈱ち㙤〳搱㈹挸捣㔶搲㈱㡡搹昵捤㠴㠸㙦㘸㌵捡㈰㔴〲昵㈶㐴愳㕣㄰㌵挲㈶㄰㙤㈱㈸㡢愱〹㐴㑦㍢㈱㙡㐲慤㐰㜴㠴ㄶ愲攱㕡㠸㑥㐵㄰㤷攲搳散挲改㜶攱っ慢㔰㜴㈶ち㙤〳搱㔹挸捣㔶搲㈱㕡㙡搷㙦㈳㐴㤳改㜱㌴㠴㕡㠶㝡ㄳ愲㐱㉥㠸㤶挳㈶㄰扤㑣㔰捥㠵㈶㄰扤攲㠴㘸〵㙡〵愲〱㑥㠸㤲摦㘸晤戵㄰㥤㠷㈰㉥挵攷摢㠵ぢ散挲㠵㔶愱攸㈲ㄴ摡〶愲㡢㤱㤹慤愴㐳㜴㠹㕤晦ㄶ㈱攲摢㔷㡤㜲〸㜵ㄹ敡㑤㠸昶㜷㐱㜴㌹㙣〲搱扢〴攵㑡㘸〲搱㝢㑥㠸慥㐶慤㐰搴㑢ぢ㔱㐰ぢ搱㌵〸攲㔲㝣慤㕤㔸㘹ㄷ㔶㔹㠵愲搵㈸戴つ㐴㙢㤰㤹慤愴㐳戴搶慥晦㤸㄰捤愱挷㙣〸戵づ昵㈶㐴摤㕤㄰慤㠷㑤㈰晡㤴愰摣〰㑤㈰摡攱㠴攸㈶搴ち㐴㝢㘸㈱敡慡㠵攸㘶〴㜱㈹扥挵㉥摣㙡ㄷ㙥戳ち㐵户愳搰㌶㄰摤㠱捣㙣㈵ㅤ愲㍢敤晡㥤㠴㘸㉥㍤昸〲㔷㜵㌷敡㑤㠸㍡扡㈰扡〷㌶㠱攸ㅢ㠲㜲㉦㌴㠱攸㕢㈷㐴昷愳㔶㈰昲㙢㈱㉡搰㐲昴〰㠲戸ㄴ㙦戰ぢて摡㠵㠷慣㐲搱挳㈸戴つ㐴ㅢ㤱㤹慤愴㐳戴挹慥摦㐵㠸慡改㔱〵愱ㅥ㐵扤〹㤱㜲㐱昴ㄸ㙣〲㔱㑥㍥㍣ㅦ㠷㈶㄰昱㘷㌳㔹㠰㥥愳㥥㠰ㄴ㠸㝥晥搱㌱扡㑥づㅤ㜷愱搶㝤〲搲捣㔰㉣挵㥢敤挲㤳㜶攱㈹慢㔰戴〵㠵戶㠱攸㘹㘴㘶㉢改㄰㍤㘳搷ㄷ愰㠳昲㙢㠴〶摦搲慡㥥㐳扤〹搱户攸㑤敡〹挸昳戰〹㐴㠵〴㘵㉢㌴㠱愸愳ㄳ愲ㄷ㔱㉢㄰㝤愵㠵㘸愷ㄶ愲扦㈰㠸㑢昱㑢㜶攱㘵扢昰㡡㔵㈸㝡ㄵ㠵戶㠱攸㌵㘴㘶㉢改㄰扤㙥搷㜷㈵㐴㔱㝡昰㤵慣敡慦愸㌷㈱摡攱㠲攸㑤搸〴愲㙥〴攵㙦搰〴愲敥㑥㠸摥㐱慤㐰昴㑦㉤㐴ㅦ㙢㈱㝡ㄷ㐱㕣㡡摦戳ぢ㝦户ぢ敦㕢㠵愲て㔰㘸ㅢ㠸㍥㐴㘶戶㤲づ搱㜶扢㍥㐰㠸昸㥥㔴㠳㙦㘱㔵ㅦ愳摥㠴攸㍤ㄷ㐴晦㠰㑤㈰㉡㈱㈸㥦㐰ㄳ㠸昶㜷㐲戴〳戵〲搱摢㑥㠸㤲㕦晡㙦㘹㈱晡っ㐱㕣㡡㍦户ぢ㕦搸㠵㝦㔹㠵愲㝦愳搰㌶㄰㝤㠹捣㙣㈵ㅤ愲㥤㜶㝤㝦㐲㜴ㅡ㍤㑥㠵㔰㕦愱摥㠴攸ㄵㄷ㐴㕦挳㈶㄰つ㈴㈸摦㐲ㄳ㠸〶㌹㈱晡づ戵〲搱㕦㥣㄰㈵㡦㐵摢戴㄰㝤㡦㈰㉥挵㍦搸㠵ㅦ敤挲㑦㔶愱㘸ㄷち㙤〳搱晦㤰㤹慤愴㐳昴戳㕤㍦㥣㄰㥤㑤㡦愵㄰昲㠲㈴ㄳ愲愷㕤㄰㈹ㅣ搹〵愲㤱〴㐵收㤹㌰㙥㤴ㄳ愲㝣昸〸㐴㑦㍡㈱㑡㙥㐵捤㕡㠸㝣〸攲㔲捣㌹㈶㔲㈸戰ぢ㠶㔵㈸攲㝣㤲戶㠱愸〳㌲敢㈰㉡戴敢换〸搱ち慣㤷挱昷慡㉡㑥㑤㌱㈱㝡挴〵ㄱ㘷㤳〸㐴ㄳ〹捡㙥搰㘴㉢㥡攴㠴愸ぢ㙡〵愲㠷㥤㄰㈵户愲〷戵㄰㜵㐵㄰㤷攲摤敤〲愷㜸㐸捤㥥㔶愱愸ㅢち㙤〳ㄱ攷㠵攸㈰攲㔴ㄱ愹㉦㈷㐴㝣摤愹挱㤷愹慡扤㔱㙦㐲㜴㡦ぢ愲㝤㘰ㄳ㠸㘶ㄲ㤴晤愰〹㐴戳㥣㄰昵㐴慤㐰㜴愷ㄳ愲攴㔶㜴扢ㄶ㈲捥挱攰㔲捣㜹ㄸ㔲㈸戱ぢ晢㕢㠵愲〳㔰㘸ㅢ㠸㌸㔳㐳〷㔱㕦扢晥㐴㐲㜴㈵搶换戸〲㐲㜱晡㠶〹搱つ㉥㠸晡挱㈶㄰㥤㑣㔰㘴㜶〴攳㠲㑥㠸㌸㍢㐲㈰㕡愷㠵㘸慤ㄶ愲㠱〸攲㔲㍣挸㉥㜰ㅡ㠴搴っ戱ち㐵㐳㔱㘸ㅢ㠸㠶㈱戳づ㈲㑥愷㤰晡㍡㐲戴ち慢㘳慣㠴㔰挳㔱㙦㐲㜴戵ぢ㈲捥㠰㄰㠸㈲〴㐵㘶㉢㌰慥摥〹搱㈸昸〸㐴㔷㘸㈱扡㑣ぢㄱ㘷㈹㜰㈹ㅥ㙤ㄷ挶搸㠵戱㔶愱㠸戳ㄲ摡〶㈲捥㘵搰㐱㔴㘶搷㈷〸搱㝡慣㥦戱づ㐲㡤㐷扤〹搱昹㉥㠸㌸㈳㐱㈰㕡㐲㔰㈶㐱㤳ㅤ慤挹〹搱㘴搴ち㐴㝦搰㐲㜴㡥ㄶ愲㈹〸攲㔲捣㤹〳㔲攰㌴〱㈹㜰慡〰㤷愲㜲ㄴ摡〶愲改挸慣㠳㠸搳つ愴㝥㈹㈱扡〵㉢㘱摣っ愱㘶愲摥㠴攸っㄷ㐴戳㘰ㄳ㠸捥㈱㈸㜲㍦㥦㜱攷㍡㈱攲晤㝣㠱攸㔴㈷㐴挹挳昵ㄲ㉤㐴扣㡦捦愵㤸昷昲愵㜰愲㕤㤸㙢ㄵ㡡㜸摦扥㙤㈰慡㐴㘶ㅤ㐴㥣〰㈰昵ㄷㄱ愲扢戰㕥挶㥤㄰㡡ㄳ〰㑣㠸㑥㜱㐱挴㝢昶〲搱㘵〴挵扣扦㡥戸换㥤㄰昱晥扡㐰搴攰㠴㈸㜹戸㡥㘸㈱慡㐳㄰㤷攲戰㕤攰㡤㜴愹㔹㘰ㄵ㡡㈲㈸戴つ㐴扣晢慥㠳㠸㌷攴愵㝥㈵㈱攲扢㐹㡤晢㈰搴㐲搴换敥戳〶昵昶㔲㝣ち㙡昱ㅦて搵愱戶㘳㍢戵〴㑡〹昵慤ㄴ摢㈸㕥㠴㔰㈷〳㠱㜷昰㔶㘰搷て搱㔵㕡〶搷㑦ㅤ㥥㡥㑣搲摥㡤捥昶捥㐰㉤晥攳㔹㌶戳扤㜳愰㤴㔰㑦㙢敦㌸慦昶㡥戵っ慥ㅦち㍣て㤹摣晤㍢ㅦ戵昸㡦捤挴㙣敦㌲㈸㈵㥡昶㘶㜸戵㌷摤㌲戸㝥㘸敦㉡㘴㜲昷敦㙡搴攲㍦㠰㌷摢㕢ぢ愵㐴搳摥㘴慦昶㡥戶っ慥㥦愸扢ㅥ㤹摣敤摤㠰㕡晣挷攳㕥㘶㝢户㐳㈹搱戴㔷收搵㕥愹㘵㜰晤挰摢摤挸攴㙥㡦户㌳昰ㅦ捦㔹㤹敤㍤〸愵㐴搳摥㈸慦昶㐶㕡〶搷㑦愳㙤㐲㈶㜷㝢扣㌷㠰晦㜸㝡捡㙣慦ㄹ㑡㠹愶扤㐳扤摡ㅢ㘶ㄹ㕣㍦㉢戶〵㤹摣敤昱㐲㍢晥㘳慢㌷摢摢〶愵㐴搳摥㈱㕥敤つ戰っ慥ㅦ攴㝡ㄹ㤹愴扤㤴晤敦ㄵ搴攲㍦ㅥ㐶㌲摢㝢ぢ㑡㠹愶扤扥㕥敤昵戱っ慥ㅦ戴㝡ㄷ㤹摣敤扤㠷㕡晣挷㔳㐰㘶㝢ㅦ㐳㈹搱戴搷搳慢扤㠰㘵㜰晤ㅥ搴愷挸攴㙥㙦〷㙡昱ㅦ捦昶㤸敤敤㠴㔲愲㘹慦㠷㔷㝢摤㉤㠳敢昷㤴扥㐱㈶㜷㝢摦愲ㄶ晦昱㐸㡤搹摥㉥㈸㈵㥡昶扡㜸戵搷搹㌲戸㝥㡥㐸慥昰㌱㔳捡昱㡣㔷晡愴扤㥤㘶㝢扣㌰愶㙢慦搰慢扤づ㤶挱昵㐳㍥㠵挸㈴晤㑢㘹㡦㤷捤愴扤敦捣昶㜸㤵㐹搷㕥扥㔷㝢㜹㤶挱昵㐳㌸摤戴敤昱ㅡ㤴戴昷戳搹ㅥ㉦搹攸摡晢昹〷㡦敦㠷晦㔹〶搷㑦挸挸㠵ㅣ攲㤹戲㍦昰㠲㡥戴㤷㡦挹㉢昸㍥敡敦搱摥㜷㕥敤晤搷㌲戸㝥㠳㐵慥㡡戸昸攳搵ㄱ㘹慦搰㙣㙦戸㐷㝢㍢扤摡晢搲㌲戸㝥挱㐴㉥㌱戸晡挷㑢つ搲㕥ㄷ戳㍤㥥㤹敢昰摣攱搵摥愷㤶挱昵ㅢ㈰㜲扥敥敡ㅦ捦摢愵扤ㅥ㘶㝢㍣捤搵戵户摤慢扤て㉤㠳敢㠷㌴攴攴搷搵㍦㥥〴㑢㝢㍤捤昶㜸捥愸㙢敦ㅤ慦昶摥戶っ慥ㅦ愰㤰㌳㐹㔷㝢㍣愳㤴昶晡㥡敤昱〴㑣搷摥敢㕥敤扤㘶ㄹ㕣㍦摣㄰㐱㈶昷昱㠵愷㘷搲摥㈱㘶㝢㍣㥢搱戵昷愲㔷㝢摢㉣㠳敢㤷て㤶㘸摢攳戹㡥戴㜷愸搹ㅥ㑦つ㜴敤㍤攳搵摥搳㤶挱昵换〱㜲挲攰摡㕥㜸攲㈰敤㡤㌲摢攳㌸㕢搷摥ㄳ㕥敤晤搹㌲戸㕥扦㉦愳㙦ㄷ㝦ㅣ㠵㑢㝢㘵㘶㝢㉢㍤摡摢攴搵摥㐶换㤰晥昶晡㘲晢戰㤲捦㤱敤㐱摥敦㐹㌷㕦戲㠹ㄹ㝢愱戸扣㑢戶〸敢㤸㕦换㌹㠶ㅤ㙡㌹㤱㉦㈴㙦晡㤴搷㤳㐷㘴㠲㕥㈱摥户ㄹ㕢㄰㡡㑤挱摢㘳昱㤶捤㡡戰昵㘳攳㤳昰㔶㔹扥つ搱㝥捦愳㈱ㅡ㘷㠷晡㙡愷挵昰攲挷昶戵㤳攲㜸㐷㙤㑤〱㝥愱㍥㤱〸挵ㅡ㝥て戳㕣㜱扤㌴て㜳㡦戱㤸慦攱搴捥㔶攴㌴挴昴昷㐲㍡㕥挴摢㠲㠷晤㈲收㕣扥愶昳搷捤㜱㤵改搵戹敡㈱昰㉡户挵㍥ㅦ摣㕤收昱攱搵㥦昸㠹㕣㙣㈵㝥㈵敢慢㌰㌱㔰㝣㐵攴ㄴ摢㕦㤳㡡㘷ㄶ攴摣㑡昴㠰㌶搱㌴捦㐴㡡㘷ち㡥昸㝢戵昱㌳扣攳㌹昲㜷挴摦慤㡤㥦攵ㅤ扦㈹㌵晥づ㙤晣戱摥昱ㅣ㤹㍢摡扦㔵ㅢ㝦㠲㜷㍣㐷摡㡥昸㥢戴昱㈷㜹挷㜳攴散㠸扦㕥ㅢㅦ昴㡥攷㐸搸ㄱ㝦㥤㌶扥挶㍢㥥㈳㕢㐷晣㙡㙤晣㍣敦㜸㡥㔴ㅤ昱搷㙡攳攷㝢挷㜳攴改㠸扦㑡ㅢ㕦敦ㅤ捦㤱愴㈳晥㜲㙤晣㐲敦㜸㡥っㅤ昱㤷㘸攳攳摥昱ㅣ改㌹攲㉦搴挶㉦昲㡥攷挸捤ㄱ㝦㥥㌶扥挹㍢㥥㈳㌱㐷晣戹摡昸搳扤攳㌹戲㜲挴㉦搳挶㥦攵ㅤ捦㤱㤲㈳晥㉣㙤晣㌲敦㜸㡥㝣ㅣ昱愷㙢攳捦昵㡥攷㐸挶ㄱ摦愴㡤㍦捦㍢㥥㈳ㄳ㐷晣㈲㙤晣㠵摥昱ㅣ㘹㌸攲攳摡昸㑢扣攳㌹㜲㜰挴㉦搴挶㕦敥ㅤ捦㤱㠰㈳扥㕥ㅢ㝦㤵㘷㝣㍥扦㈳戲晥戲攲〸敦㔷㍥摢㜰つ摡㔱晣ㅥ㘱㠳挶戵搴昸慤㈰摡㑡㙡㍣挶㡢戶㡡ㅡ㡦搸愲慤愶挶攳慦㘸㙢愸昱㘸㉡摡㕡㙡㍣㌶㡡㜶ㅤ㌵ㅥ改㐴㕢㐷㡤挷㉤搱搶㔳攳㔱㐸戴敢愹昱㤸㈲摡つ搴㜸㠴㄰敤㐶㙡摣摦㐵扢㠹ㅡ昷㕥搱㙥愶挶㝤㔱戴㕢愸㜱捦ㄲ敤㔶㙡摣㑦㐴扢㡤ㅡ户㝡搱㙥愷挶㙤㔸戴㍢愸㜱㡢ㄴ敤㑥㙡摣扥㐴扢㡢ㅡ户ㄶ搱敥愶㐶敥㐵扢㠷ㅡ㤹ㄴ敤㡦搴〴㔴㜰㤲㜲㔶愸〴㕣搶摡㕦昲㈸攷㈸〱搹攵㉢㘰扢㝣〵㜴㔷慤㠰敦慡ㄵㄲ㕣戵㐲㠶慢㔶㐸㘱慤㍤摣㐴㌹㐷〹㌹慥㕡㈱挹㔵㉢㘴戹㙡㠵㌴搶愶昴㔸挸㜳搵ち㠹慥㕡㈱搳㤵㔷㐸㜵昹ち戹㉥㕦㈱搹攵㉢㘴扢㝣㠵㜴㔷慤㤰敦慡㤵㡤挰㔵㉢ㅢ〳㙢㔳㝡㉣ㅢ㐵扡㙦㠷晦〷㔱㘷愳捤
H37: Decisioneering:7.0.0.0
H38: CB_Block_7.0.0.0:1
H39: 㜸〱捤㝤〹㜸ㄴ㔵昶㝤㕥㐸㥡㔴ㄳ㐸ㄴ㔴ㄶ㤷㐶㠲㈰㈰㍢〲㉡㈲㈴〲㤱㥤㠰戸㘱㙣㤲づ㘹改愴戱扢挳攲㌲愲攰〰敥扢㙣㡡扢㈸㍡㈸㌲㡡㝢㔰㕣㐶㜱㕣㘷㜰㐴挷㡤ㄹ㐵ㅤ㘵㕣挶㕤晦攷摣慡敡㔴㜷扤敡昴捦扦昹㍥㡢昴攵摤㜷㤷㔷敦㥣慡敡㔷㔵慦慡㜳㔴㑥㑥捥㉦㔸昸㍦㤷㍣ㄶ昶慦㔸ㄴ㑦㠴敡晡㤶㐶㈳㤱㔰㔵㈲ㅣ慤㡦昷ㅤㄵ㡢〵ㄷ㑤〸挷ㄳ慤攰攰慢っ挳ㅥ捦慦㡣㠷捦っㄵ㔴捥て挵攲㜰捡捦挹㈹㈸㌰㜲㘱敦㘴㝤㡡㙤挵㘰㤴㤱㐷〱慦ㅣ挳㐷搱㥡愲㠰挲愰昰㔳戴愱㈸愴㘸㑢搱㡥愲㠸愲㤸㘲㉦㡡扤㈹摡㔳㜴愰搸㠷㘲㕦㡡晤㈸㍡㔲戰㝤愳㌳㐵ㄷ㠸挲晤㈱㉡㑡㐷㑦㥥㝤㍡㝡㔳㤱㠸挶㐲㝤〲挷㥢敢㍣㘲㘸摦㐱㝤〷昴敦㝦㜸摦晥㝤〲愵つ㤱㐴㐳㉣㌴愲㍥搴㤰㠸〵㈳㝤〲㔳ㅡ㘶㐷挲㔵攳㐳㡢愶㐷攷㠶敡㐷㠴㘶昷ㅦ㌴㍢㌸㜸搸㠰挱㐳㠶搴っㅦ㍥慣昰〰㈴㥥㔸㍡㝡㑡㉣㔴ㄳ晦㡤㔲ㅥ挸㤴㤳㑢㐷昷㥤ㄴ㑡晣㐶㈹て㐲捡㐹愵愳换愲㜵挱㜰晤㙦㤳㌳㥦㝣づ㉡ぢ㔵㠵㐹㝣㈸ㄴぢ搷捦改㡢㤵㑥〱ㄹ摡搰扥㘳㠰㜶㔵㌰㥥㈸つ㐵㈲搳㐲㌵攴扣戰㡥㠰㠵㘲愱晡慡㔰扣㕤摤戱ぢ慢㐲ㄱ换ㅣ㉦愸㍢㍥ㄸ㥢ㄴ慣ぢ攵戱㔰㔴㘷㜲㔶㕥ㅤ慡㑦㠴ㄳ㡢摡搶捤㠸㠷愶〵敢攷㠴攸㤲㕦㌷戶㈱㕣㥤㤷愷昲昲㜲㕡昵搰慤㡣㄰搳㜷㑣慣慡戴㌶ㄸ㑢㠸㐶捡〶攸㝣ㅤ㕢㠷慣㜸捡㙡㜱ぢち愴㐵㤱愴㡡㜰摤昸㔰慣㍥ㄴ㘱㈳愴慥㜷㥡㤳㘰㘲㈲㥦〴挷敥つ㜹㔱㙤慣㝤㡤㕤㘱㉢㐶㠰愲㉢㠴敦㘰㠸㡥搸っ〲愵搱㜸㈲㜰㔸㈰ㄲ㥡ㅦ㡡〴〶愳㌴㜱收㘴愳ㅢ晤㑡㈰㔴摥㑥散挰捥㍣摣㠹㜲㉢㠳戹㤵戳㜳㉢慢㜲㉢慢㜳㉢㐳戹㤵㌵戹㤵㜳㜲㉢㙢㜳㉢挳戹㤵愷攷㔶捥㠵㡦扤ㄴ戴㙥㥤㙢㉤扢㜷捥づ㈴㘶ㅣ㜴捣愶ㄵ晦㕣昴㘵昹㑢敢ㄵ昷㔹搹㜹て㐱挱攸〱攱敢〹ㄱ㤸ㅥ㑤〴㈳㠱挹昳㐲戱扥晡昵㍢㤴晥扤㈰㤴晡ㅢ搶㡦敢昸收㠶昹愳㕥㜹攸㤲㠹ㄷ㑥㥡㌵㜳挸挶戹愷㈹ㅥぢ㈴㜹ㅦ㍡ㅦ〶攱敢ぢ㜱〰㍢㍤㍡㔴ㅦ慡〹愷昶扢㌴㕡㌷㍢㙡昴愳㜳㝦〸愵㕥戲㌲摦戹㜲搹昸㜹晤㑥㤹戰㘴扦挷敥㤸㤰㜳挰㜱㡡〷ㄸ挹㍣㤰捥㠳㈰㝣㠳㈱摣㜰づ戲攰ㅣ㐲扦挳㈱㤴晡㡢㤵昴攱㐳敦ㅥ晡收捡搶挷㙥㥥戸慢昷收挴㥢㥦㈹㙥扣㤲㜴ㄸ㥤㠷㐳昸㡥㠰搸㝦捡攸挰㡣晡㙡慣㙤㝤愸摡挵搳㤱昴㍤ち㐲愹愷慣挴戳㜷㌴ㅣ㜴晢㜷愳㐶㙤挹摦攵摢扤攳戹㍦㈹ㅥ〴㈵昱搱㜴ㅥ〹攱㍢〶攲㐰㙤攲〱㘸挲〴㘲ㄴ扤㐷㐳㈸昵㤸㤵扡攷っ昵挲摥㍢㝡㡤摡㔰ㅣ晣㌱攷㥢㤹慦㉡ㅥ㕡㈵㜵ㄹ㥤㡦㠵昰㡤㠱搰㐲摣㤴㜹㉣㥤挷㐱㈸昵愰㤵昹晥挵挷㕥戳晢攳㘰昹ㄵ慢扢㥤㘷散㤸㌹㑥昱㜸㉤㤹㡦愳昳㜸〸摦〴〸㍤ㅡ㌶捣ㄳ改㍢〹㐲愹晢慣挴敢㥦晤㘰昹㌳攷㝤㝦摣攲挶㐷ㅥ㕦摢昵慤㙡挵捤㔷ㄲ㑦愱昳㔴〸摦㌴㠸㠳㍤㌷㌹㈶㌷ㄱ愹㘰挴㜴〸愵㌶㔸改㜷晦㙦挲搰㘳敥摤㌲敥搲㕢ㄶ㥣摤敢昲㝥摦㈹㝥扢㐸晡攳改㍣ㄳ挲㜷〲㠴ㅥ㙣敥㙤㘶敡ㄳ改㝤ㄲ㠴㔲户㔹愹挷晦㝤挵挶摢晥晤㑥改㤲挷て㕤扥攴戱愱搳ㄵ扦戳㈴昵㈹㜴㥥〵攱㍢ㄵ愲㡢㙥㝢㈶搸摣㡦㉢改㝡ㅡ㠴㔲敢慣扣摦扥戶攳搱攱捦㜴ㄸ扦㝥㘱敥晦扡㝦㝦搶㤳㡡㕦㠳㤲㜷㌶㥤慢㈰㝣搵㄰㕤㈶㐵〳攵㜵昳㠲㔵㑤㝢挹挰攴晡㠶攸㕡〳愱搴㉡㉢敦㠰攷㠷㜶戹㝢搹愳㘵㤷㝣㌰㜱挵㙢㜳换㐶㉡㝥戳㑡摥㕡㍡㠷㈱㝣愷㐳㜸㈳摤㤴㥥挷て㈳〲愱搴㔵㔶晡㐳㡥搹㌵㜸挵㔷扦㤴㍤㍥㙢搳㤵㤷戵慢戸㕦昱㍢㕢搲搷搳㌹ち攱㥢〷愱摤昶㥡㌲㥦㐱攷ㄸ㠴㔲㤷㔸㤹㐷摦㍢昵愰㘷㙡摡㤶㍥扡散ㅦ敦㐶㜶㕤㜴㤱攲㐰㐰㌲㈷攸摣〰攱㥢て搱挹つ㠸扤攱㉤愰攳㐲〸愵㤶㔹㔹ㄷ㝣㜷收㝦㡥戹㝤昱愸㡤扤㐳㥢昷㕤㙤㍣慢㌸戲㤰慣㘷搲昹㉣〸摦搹㄰晡㉤㥡㉢㑣晥捥愱敦ㅦ㈰㤴㍡捦㑡ㅣ㙤扤扡㑤慦愵户㑥㕣㌳㘹收㝢㕦㑣扦㈹慣㌸㕡㤱挴㡢改㝣ㅥ㠴敦㝣〸つ㝦㑤摢摢ㄲ扡㉥㠵㔰敡㉣㉢敦㑦敢捦㙣搸摣㜶㙥昹挶敢㈷㕦㤶ㅦ扦攱㘳挵〱㤰攴晤㈳㥤㤷㐱昸㤶㐳㘸户㌷㘶收晡慥愰敢㠵㄰㑡㌵㔸㜹㔷〶㍡㥣晤搷㐹ㅢ㈶㉤ㄹ攳敦㍢昰㤱搰㐶挵㌱㤵攴扤㤸捥㤷㐰昸㉥㠵搰ㄲ搷戴昳㕤㐶攷换㈱㤴㡡㕡㤹㠷〷㔷㥤㝡捥戰敦捡敦㝣㘷昳㤲㜸搵戲搵㡡〳㌵挹㝣㈵㥤慦㠲昰㕤つ攱㍥㉥摢扢挷㌵昴扢ㄶ㐲愹戰㤵昴敤愵㙦ㅣ摤㙦攷捡㐹㌷昷㝥敢㥤户昲扦晥戳攲挰㑦㤲慥愴昳㉡〸摦㙡〸晤ㅥ摤戴愱慤愱昷㕡〸愵慡慣搴〷捣㝡㜴攸搴㡢愷㤵摦㌹敤捤ㅤ晢挶户攷慢㡥㌰㑢敡ㅢ攸扣づ挲㜷㈳㠴㝥㤳戰搷昹㈶晡摥っ愱搴㉣㍢昱扦〲㡤搷慢㐳㐷㕦晤捣㤵㕤㝥㘸晣收㍥挵㈱慡㈴扥㤵捥户㐱昸㙥㠷昰摥昵㥡戶㡣㍢ㄸ戱ㅥ㐲愹㤹㔶晡㌹愷㜶㡥㕣摣㈵㘷搴挶㈳㤷㥣㌳昵㕦㕦㉦㔷㥤㘱㤶昴㜷搱㜹〳㠴敦㙥〸㍤㈴㑤ㄴ摥㐳敦㍦㐱㈸㌵搵㑡扤慤挷攴摡挱㕢敦㉤㝢㘸㔳昷㙦攷摣昷昱ㄶ挵㈱戵愴扥㤷捥昷㐱昸㌶㐱㘸昶㍤㝢ㄷ戹㥦㡥㥢㈱㤴ㅡ㙦㘵㥤㥣晢昲慡㡦て㜸收戸摢愷㡦慢敦ㄸ扦收愱挲〷㘰㥥㙡㡤㠵捡㘲挱〵ㄸ㔰㌶つ㔵〷昶敤捦㝦捤㡦搰㌱㐰慦ㄹ㔲㌳戴㘶挰㠰敡㈱晤㠳㠳㠲昹〱愴捤㜶㘸挸扤愹戰㘶㘶戸扥㍡扡㐰挶㡡㠵㌵㘳挲㤱㐴㈸㈶㑡㔱つ晥㌳挷扢愲户慤㌹㜶㈱捥ㄲ慡捣㘱㘵㠷㥡搲㔰㉣㠱昱㜵㘲㔱搳㔸㜳晦搱挱㜸愸㐹敤㙤攵ㅥㅤ㙤愸慦㡥㜷搱ㅢ㉢ㄲ挱㐴愸㜳扡慤㈹㠹㉢慣〲㠳敦㔰㕣㔶改挰昴戰攳㠳㤱㠶搰愸㠵㘱搳㝣㐰㥡ㄹ挳昰攸㙣㙦敢㤸㔸攸㡣愴搵戵㐶愳㜰㕥㌸㕦㜲扢㝡㘹㥡捣昵ち㤴搶㐶攳愱㝡㔹扤摥㜵㔳挲㔵㜳㐳戱㡡㄰捦㉡㐳搵搲搵㝤㘸戲捥〵㝡㑦慥㐷㐷㌱扡慦㍥搸㔹㑢愰㐳ㄸ㕦㔵㘳㝤㌱摥㑣㉣㥡ㅥ㥣ㅤ〹敤㥢攲㘲戶〹㐳愷㤴敡㌱搱慡㠶㜸㘹戴㍥ㄱ㡢㐶㔲㉤愳慡攷〷㜱晥㔱㍤㌱㕡ㅤ捡㤳㈵挷㤴㉡愷㔵㉢愵㜲㝡敡〶昲捣ㅤ攷㔰摦戱㤱昰㠴㈲戳戳㘳㈳愲戳昶ㄴ㈱㤹ㄹ〵挷㐶㐶晦㐳㌳慥㠹㜳㈳愴㜷晦㡣摥㥡㡤㤴㐱ㅤ㔳㜷扣扥搳挰て㜸㠸㠴戸㔷收㤶㜸愷㙣摡㉥㥢㔹㔳〷㉢扣㠸㐰敦っ愰㐹摡攴戶搷戲捥戹戹敤慤摥ㅦ㍢ㅦ㘷㤹攳㠲昵搵㤱㔰㉣攳㈵㄰挵㌵㌲ㅥ愴搸㐲昱㄰挵挳ㄴ㡦㐰攴㤷攱ㄸ攷㠹㘸ㅥ㍣搴㐲戵㈸㝦㐱戸㍡㔱敢慢つ㠵攷搴㈶㔰㠷㑢㈷〵〵㠴摢戵ㄸ㡦愱捡㜸㥣攲〹〸扦㍦挷搷㠸晦㜳㝣㝥㉣㌹昹㍣㔵晣扦㥦搰收㈲捡㤰昳㘷㕣摤㠸攷搷攱㌴㍤摥慡㤵慥搷攳㠲昱摡〴㜷戸捣㐶收摢㑡昱㈴㐴攱㔳㄰ㄳ挷㠵㈲搸㕤㝦愳ぢ㈳昹摤㤰戲搹㔳㜰㡥攰昶慤慢㔸㔴㕦㔵ㅢ㡢搶攳攲㔴㔹㌰ㄱㅣ㔵㠵敢っ㜱ㄵ昴搵㑤㠸㤶㌶㈴㝣㜵攳挲昸慦戰㙥㕡㘸㕥㈸㤸㈸挵搱㌸搱戶㙥〲慥㔱挸攱戲扣㝡㘱㝥㥤㜹㜹愱㉣ㄴ慦㌲㜸ㅤ愲ㅣ㐷㥦㠵㍥㤴㜰㌸㉤慣攳昱㈴戴㌰挱搴慤敢愶〴㜱ㅤ㈳㘱挰愹户㐴㤹㈵㐶戶㤵㍡㍢摡㙦㘹挸㔰㉣㐵㐷㤶㌶㔲㘱㘶捡攱〶㠲㉦㑡㝣挷收㔹㌲㝤㐷㤹㤱〸㐷攲㝤㉤㜴晢㤶㐵㜱㤱㉡㈴㤷攷㠸扡捦㠷敤挸㤷㤱慢昴晤㤹ㄷ㌲㈶㔷捤㌶搳㘲㔵挶挶愲つ昳づ㐴慥摦㉡て㜳攵ㄸ摢㈰搶晤昷慥㈳扢㕦扦昱ㄷ敢晦㜳戱愷挸攲㝢ㅡ㐶昷㈰搰ㅥ戳㌶挲㑡㍦晣㈷㡢昱㉣晥昳ㅢっ㌲ㅡ㈱摣戶晣ㄲ㔴㙢㡦戴ㅥㄷ㘳昲攱㕦㔸〷ㄸ愶挷㐲㜲㜵愹㐰㤴㐵昳㐲㙤敢㘶㐶㘳㜳㘷㐷愳㜳戹㔵戴ㄳ㉤㕥ㅢち㈵㜸挹愶㡤㜵㠵㡡㘵愵㔴慢㔶㈹搷㘱ㅣ搷㜶づ㐲㝥摦ぢ㄰㙤㐷㐵㈲〱㍢㘳摣户ㅤ㔵慤昰㡤攲㝢ㄱ㠵晤㌰㐰慦㥣㔰㕡㕡㌹戰晦㠰晥㠷昵ㅦ㝣搸㠰㠱㝤ㄷ㐶攲㜵㙡㈰㝡挸㉢㈸戱搲㐳㡦扦㘳挵户㤳㉥㤹昰㘱攷摤㝦敦搰㕡つ戰っ慥敢㌶㠷㈰㕤〰ㅦ攳㘵㡡㔷㈸㕥愵㜸㡤攲㜵〸搵ㅢ愱㍣㔴愱㥣扡ㄸ㝦㠷㙥散愰㜸〳〲〷ㄹ〱搹㍣摥愸ㅥ愸攲㌱挷㜸㤳㘲㈷㠴攲愵ㅥ敥㥥㌹挶㕢㄰㥥ㅣ扦つ㘳昳搷㡤ㅡ攱㠵戵㑡慥㤶昱づ㉡晣〶㠳摤㕣㡢㑤昵㠲㡤㝣ㅢ挴搷㈰愲〶搱㔴㥤㤱㐶㡢㕡㈷换攰扡㈰搵〷㘱〱挶㝦㐴戱㥢攲㘳㡡㑦㈸㍥㠵㔰敤ㄱ慡㐷敤㌳晡㝣㑥戱〷㈲つ戵挳㔰㈵愸㝤㐱㠷㉦㈱㔴㍦〸ㄳ戵慦㔰昲㐴敤㙢ㄸ戵㈷㕥㑤㈷〴㡤㜰挱㙡㌵㐱昶つ㉡晣〶㈳摤㤰㠹㑤昵㠷㑤〷㔹慥㠵㡣㙢㐳㔳㤶挱㜵愵㙤㈰㌲〵搸㔲㡥㠲攰㈱换挸愵㘸㐵挱摢〹敡㠷㥦扤㈰昳搱愷㌵㐵〱㐴ㅡ㘴㠳㤰戴㉢ㄳ晢改搰〶㐲つ㠱㙡㐲㔶〸搵ㄳ戲戶㌰扡て㈶昶㤵㠰㐶㈴㐹㐱慢〸敥㝥㠳㐱㙥戴挴愶づ㐷㠸づ慤㡦搱㌳敤〶戶摢㌲戸㉥㈱づ㐳愶〰㍥㐶㐷㌶搷㠹愲㌳㐵ㄷ㡡晤㈱搴〷㥥㘸ㅤ㐸㥦㠳㈸〲㄰㘹㘸つ㐷搲慥㑣㝣㌰ㅤ扡㐱愸㈳愱㥡㘸㤵㐰昵㐴慢㍢㡣晡昳㔹捦挳㙦て㠴昸つ〶扡ㄱㄳ㥢㍡ち㙤敢㄰㝢搵ぢ戱㔷㉣㠳敢摡攸搱挸ㄴ挰挷攸捦收〶㔰っ愴ㄸ㐴㌱ㄸ㐲扤攰㠹搸攱昴ㄹ㑡㌱っ㈲つ戱㤱㐸摡㤵㠹㡦愰挳㤱㄰㙡ㄴ㔴ㄳ戱愳愰㝡㈲㌶〲㐶晤㤹㜴搳ㄵ搴㐶愴㑡搹捡㐶㈲挸㙦㌰搴㡤㤹搸搴㘸㠴攸㌰㝢搸ぢ戳㠷㉣㠳敢愲㙦ㄹ㌲〵昰㌱挶戱戹㜲㡡攳㈸挶㔳㑣㠰㔰昷㝢㘲㌶㠹㍥㤳㈹愶㐰愴㘱㜶㉣㤲㜶㘵攲㘹㜴愸㠰㔰㘳愱㥡㤸㑤㠷敡㠹搹っㄸ戵㠷戱っ㤰捤㐴㡣摦㘰愴ㅢ㌲戱愹㜱㘸㕣〷搹捤㕥㤰摤㘴ㄹ㕣㔷戳㡦㐳愶〰㍥挶㘹㙣㉥㐸㌱㥢愲㡡愲ㅡ㐲慤昱㠴慣㠶㍥㜳㈸㙡㈱搲㈰ㅢ㡦愴㕤㤹昸㜴㍡捣㠵㔰ㄳ愱㥡㤰㐵愰㝡㐲㔶〷愳㝥挷昴㍣㤴㐵ㄱ攲㌷ㄸ攸㐶㑣㙣㙡ㄲ摡搶㈱㜶愱ㄷ㘲㉢㉣㠳敢㌲晤ㄴ㘴ち攰㘳㉣㘴㜳㡢㈸捥愴㌸㡢攲㙣〸戵挴ㄳ戱㍦搰攷㕣㡡挵㄰㘹㠸㑤㐵搲慥㑣㝣㍥ㅤ㤶㐰愸ち愸㈶㘲㑢愱㝡㈲㜶〱㡣摥㔷搰㥡㉥㜳㌵㈲㕤捡捥戹っ㠱㝥㠳攱㙥摣挴愶愶㈳㐴㠷㕢捣ぢ户㌳㉣㠳敢晥挳昱挸ㄴ挰挷戸㥣捤㕤㐱㜱㈵挵㔵ㄴ㔷㐳愸戹㥥戸㕤㑢㥦敢㈸㔶㐲愴攱㌶ㄳ㐹扢㌲昱㙡㍡慣㠱㔰㈷㐲㌵㜱㕢ぢ搵ㄳ户敢㘱搴ㅦ搰㌲っ㌲搶㈱挸㙦㌰搴㡤㤹搸搴㐹㘸㕤㠷搹㐹㕥㤸㥤㘸ㄹ㕣㌷㔶㑥㐱愶〰㍥挶㝡㌶㜷㈷挵㕤ㄴㅢ㈸敥㠶㔰ㄵ㥥㤸晤㠹㍥ㅢ㈹敥㠵㐸挳㙣ㄶ㤲㜶㘵攲㑤㜴戸ㅦ㐲㔵㐲㌵㌱摢っ搵ㄳ戳㍦挳愸扤搰㙥㕦〵㙥㐴㥥㤴㡤散㐱㐴昸つ挶戹〱ㄳ㥢㍡つ㈱㍡挰㐶㝢〱㌶捡㌲戸敥ㄸ捤㐶愶〰㍥㐶㈳㥢摢㑡昱㈴挵㔳ㄴ摢㈰搴㤱㥥㠰㍤㐳㥦㘷㈹㥥㠳㐸〳慣ち㐹扢㌲昱昳㜴㜸〱㐲㠵愰㥡㠰㙤㠷敡〹搸㡢㌰㙡敥㜸㌴㕤㡦㙦㐴㥥ㄴ挰㕥㐲㠴摦㘰㥣ㅢ㌰戱㈹摥摦搲〱搶换ぢ戰㐳㉤㠳敢㔶㔸㉤㌲〵昰㌱摥㘰㜳晦愰㜸㤳㘲㈷挵㕢㄰慡㥢㈷㘰晦愴捦㍢ㄴ敦㐲愴〱挶扢㙡㕤㤹昸㝤㍡㝣〰愱收㐲㌵〱摢〵搵ㄳ戰㝦挱攸㝤㌴换㠰摢㠷〸昴ㅢっ㜷攳㈶㌶ㄵ挱ㅡ攸㜰摢摢ぢ户扤㉣㠳敢ㅥ㕦㍤㌲〵昰㌱昶戰戹晦㔲㝣㐱昱㈵挵㔷㄰慡㡤㈷㙥晦愳捦㌷ㄴ摦㐲愴攱ㄶ㐵搲慥㑣晣㍤ㅤ㝥㠰㔰㘷㐰㌵㜱晢ㄱ慡㈷㙥㍦挱愸ㅤ㙡㘴㠰散ㄷ挴昸つ㐶扡㈱ㄳ㥢㡡愱㜱ㅤ㘴摦晦攴㜱づ昰㥤㘵㜰摤扣攴攵扥〰㍥㐶㐱㉥〴㈷㑣ㄹ㝥㡡㌶ㄴ㠵㄰敡㑢㠴敡㑦㌲摢搱愷㠸㠲㜳慢搲㈰㙢㐰搲慥㑣扣㌷ㅤ摡㐳愸〵㔰㑤挸㍡㐰昵㠴㙣ㅦㄸ㌵㌷㜰㍣挷ㄹ晢挱摦㙦㌰捡つ㤷搸搴㐲㌴慣㠳敢㝤㉦戸摥戳っ慥扢戲㘷㈲㔳〰ㅦ㈳挰收扡㔲ㅣ㑣搱㡤愲〴㐲敤昴㠴敢㄰晡昴愰攸〹㤱〶搷㔹㐸㉡㜰昵愲㐳㙦〸㜵づ慡㑣戸晡㐰昵㠴敢㌰ㄸ昵㈳㌳晢㤶㔷㈳ㄲ愵ㅣ换晡㈱挴㙦㌰搰㡤㤸搸搴ㅦ㄰愲㐳散㜹㉦挴晥㘲ㄹ㕣户㥢ㄷ㈳㔳〰ㅦ㘳ㄸ㥢ㅢ㑥㜱〴挵㤱ㄴ㐷㐱愸愷㍣ㄱ㍢㥡㍥㈳㈹㡥㠱㐸㐳散㍣㈴ㄵ挴㐶搳愱ㄴ㐲㉤㐱㤵㠹㔸ㄹ㔴㑦挴㡥㠵㔱㜳昰捦㌰扣ㄸ㡢〸扦挱㌸㌷㘰㘲㔳㑢搱戴づ戰㑤㕥㠰摤㘷ㄹ㕣昷搱㜹晢㍣㠰㡦㌱㠵捤㑤愵㤸㐶㔱㐱㌱ㅤ㐲㙤昰〴散㜸晡捣愴㌸〱㈲つ戰㘵㐸㉡㠰㥤㐴㠷㤳㈱ㄴ敦扦㥢㠰㥤〲搵ㄳ戰㔹㌰㙡㠷ㄷ㥥㈷攵㤵㠸昰ㅢ㡣㜳〳㈶㌶㜵㈱㥡搶〱戶摡ぢ戰㔵㤶挱㌵㐱攰㘲㘴ち攰㘳搴戲戹㌰挵改ㄴ㜳㈹㈲㄰敡㉡㑦挰敡改ㄳ愵㤸〷㤱〶搸㈵㐸㉡㠰挵攸㄰㠷㔰㤷愱捡〴㉣〱搵ㄳ戰〶ㄸ戵㐷晤っ挳晥〵㠸昱ㅢ㡣㜴㐳㈶㌶㜵㌹ㅡ搷㐱㜶扥ㄷ㘴攷㔹〶搷捣㠷㉢㤱㈹㠰㡦戱㤸捤㥤㐷㜱㍥挵ㄲ㡡愵㄰敡㉣㑦挸晥㐸㥦㘵ㄴ换㈱搲㈰扢ち㐹〵戲ぢ改㜰ㄱ㠴扡〶㔵㈶㘴ㄷ㐳昵㠴散ㄲㄸ摤搷挹㍣挷慦㤷挱摤㙦㌰挸㡤㤶搸搴戵㘸㔷㠷搶改㕥㘸㠵㉤㠳㙢㑡挷㑡㘴ち攰㘳慣㘴㜳慢㈸㔶㔳慣愱㔸ぢ愱慡㍣搱扡㠱㍥敢㈸㙥㠴㐸㐳㙢ㄵ㤲ち㕡㌷搳攱ㄶ〸戵〶㔵㈶㕡户㐲昵㐴敢㌶ㄸ昵㈷㐹ㄹ挶ㄵ㜷㈰挸㙦㌰搴㡤㤹搸ㄴ㈷愰攸㌰㥢收㠵搹㔴换攰㥡慢㜲〳㌲〵昰㌱敥㘵㜳昷㔱㙣愲戸㥦㘲㌳㠴ㅡ敦㠹搹〳昴㜹㤰㘲ぢ㐴ㅡ㘶敢㤰㔴㌰㝢㤸づ㡦㐰愸㥢㔰㘵㘲昶㈸㔴㑦捣ㅥ㠳㔱晦㐵改戹㤵㍤㠱㄰扦挱㐰㌷㘲㘲㔳㌷愳㙤ㅤ㘲㐷㜸㈱㌶摣㐶㉣㝤ㄲ捥慤挸ㄴ挰挷㜸㡥捤晤㠵攲㜹㡡ㄷ㈸戶㐳愸㐱㥥㠸晤㤵㍥㉦㔱扣っ㤱㠶搸㙤㐸㉡㠸扤㑡㠷搷㈰搴ㅤ愸㌲ㄱ㝢ㅤ慡㈷㘲㝦㠳搱㝢搰㥦攱晢㜲〷〲晤〶挳摤戸㠹㑤㜱捡㤰づ户㠳扤㜰敢㙡ㄹ㕣戳㡢敥㐲愶〰㍥挶扢㙣敥㍤㡡昷㈹㍥愰搸〵愱扡㜸攲昶㙦晡㝣㐸昱ㄱ㐴ㅡ㙥ㅢ㤰㔴㜰晢㤸づ㥦㐰愸㝢㔰㘵攲昶㈹㔴㑦摣晥〳愳㝥敦捣㜰晣晦ㅣ㐱㝥㠳愱㙥捣挴愶㌸ㄷ㑡㠷㤹摦ぢ㌳挳㌲戸愶㑤摤㡢㑣〱㝣㡣㙦搹摣㜷ㄴ摦㔳晣㐰昱㈳㠴㙡攵㠹搹捦昴昹㠵㠲㌳慦搲㌰攳っ㉣挱㉣ㄷ㌶愳ㄵ㠴扡ㅦ㔵㈶㘶㜹㔰㍤㌱攳㉣㝥捤愸摦㜳っ摢ㅡ晥㝥㠳㔱㙥戸挴愶㌶愳㘱ㅤ㕣㕦晣攸㜱㤲昴㕦换㤰㍥ㅦ㉣晦㐱㘴㑡扦昱㉤㤳改㤳㌳㘵ㅣ㜳㜰摡挱搹㔷㌳愳㍥㥣㠸户愹ㄹ搵㤰㠸㡥〹㈷捡攲㠹挲ㅡ〸ㄴ㈵愴戳㑣㉡㜱〴昵慥㌹㍥ㅣ㕡㌰ㅤ㜷㜸て㜲㥢昰㥣㐱㘹㐳㍣ㄱ㤵㝢晡〷扡敤㘵搱㐹搱㐴㔹㌸㍥㉦ㄲ㕣㔴愲㌱㥢㤶㤹戵愱㝡捣㜲㡡㘱戲㔳㜳㑥搱㜹昳㐲搵㥡㜵慣㠸㌶挴慡㐲攵㘵扦㠷㜹㔲捡㥣㥣㠰㉤㤵㌳愴㔴㜷敦㜹㐱づ摣て〰㌷戹戸㌵慥㝥摤㌴ㅢ㕦㌱㌶户㔶㤸㔷㠷愷㝦㔰捡㘱挳㥣昸㠲㤹㉦㕢㥡摤㐴ㅣ㌳慦摡挰搹㕦〳㕡捤扡戶搶搴扥昲晡㜸戸㍡攴户戴㠹攱晡㜶㔶㜱㜲㐳㈲挵ㄲ㕣搸摥戲攰晥晤攴㝡㔰㕦ㄵ㡣㔵晦ㅥ㔸㐱挷戰㤸㤴㈸ㅦ晥晤㍡愰捤㌴㌹㌹㝢㜸戹㠳换㥥㜳㜱愴㈱捥㥣摥愴㥤㑡㤱摣ㄵ㔱㜰㑣㕡㉢㠲㝦㕢㐲㥤慣㉥愰㌶㌱ㄴ慣ㄷ〶㉡ㄲ搵㘵愱昹敤挴㈳㠴㡤ㅢ㡦昶㐴㐲敤㔳㔵㤹㙡㘳搴㡣㥡ㅤ㡦㐶ㅡㄲ愱㜶挹㤲散攴㐶捤戴㔰㈴挸〹㠸㠵挹搲㤴慡〴愶㘸㈶昳㜱㜲攱敦㠷ㅤ㈰㤲㘷㌱愴㠴㈳㕦㠶㘳㕢㙡㈷戸晦晣㑡㐶㐱㘴㡤㉣㥦㡤㔴慢㔷㜱戹㜳㘴㡥㕤㈰户㈰㤷搳搶戲㥦㘱挸扤愸扤㍤昱搵㍣扡挹㠱慢搰慥攳攴扥戶㌵㜲捣挳っ㕥㍥搵㔵挴摤㈶㠲挷敤ㄲ攱慡㘰㈴戲愸㕤㑤㜹㝤㔵愴愱㍡㌴㈱㌸㍢ㄴ戱㡦搷搱㔸摤敦㠴慦㍣㙥晥㈶㔷ㄹ㜰戱愶㕤㤶攳㌱㐸㝢㍥攳慦㍥挴攱㝡㥤晤㤵㡡ㅣ㈶㉤㡦㘰㈵晥捦㔳㌹晤〸摡扢㘹㈲戲㍣㈸㠷㐳㥡慢㡡挷㌲捥㜷㑢捥〶㤵扤捤攱㌶㈱㍡㈱㡡㤹扡搵㡥慡㜱㘱戳敡㜷戳㑦〹㐵㍥㥦敦搷㝥戱〰㉢㉣㝢慣㐹㌳㌸搸㤹晡㐸㡥慦戸㘳㍣〶㍤㝤愶㥣㘳〰㈲摦昹㜲〰㉣㠶㘳ㄱ㡦㕥收㠰㘱㝡㌸ㄱ〹戵愹ㄱ扢㤴ぢ戸㍢㄰捤搶㌵搳㙢㌱戹慣慣㙤捤搸㔸戸㍡㠲愷挵㌸昸挰捣㜱㍥㥣㌸㈱㌴〷㜳㥣愷㐴攳㘱㍥㙦摢戶㘶㝡㉣㔸ㅦ㥦挷挹㠵㔵㡢昶㑥搱㠴慣晣㥡搱攱㝡散㍣㘶㥢㉣ㄷ搵㔴搴㐶ㄷ攰㤱摤㠶扡晡戱挱㜹昱摦〵㔱搶㔷〹㄰㌲昷愸㕣㤵㥢慢ち㜲ぢ㝥敤㜷ㄴ戶㜰愴攴㤴愳㕣ち㡢慡挷㔱捡戰慦㤲㈵㙢㠶㌹昷㔵慥㔳捡㈳愸摡㘹慦挹攷㥤㜹晣㌵㍡㘰〷㉤摣〷愲㝣散㡣昲愶攷ㄲ晥㝦ㅥㅥ捥㝦〲㠹㌳㝣ぢ挸㔶㤱㥣〳扤て㥣摢㤹㕢ち敢戸攱ㄸ㐲㌸戵昴慤捦㕦㈳㍥摣㄰昱挵㐹㜷ㄶ挷㘰摡㙡㈱昶㝢ㅣ㜵㌱摢ㄷ㠷摢㜶愶挲㔱㕣㕤㌰ㄲ户㙣㜸摡慤㉥挸㉤㡢㕢㘵〵づ搹愱〲ㄹ㔲攳㐰㘲搴㐰挸收㘷㔵〵ㄷ愲㉡戸㔰慡昰㑤捣攷ㅡ愴捣㕣搱㌹挱㔸㌸㔱㕢ㄷ慥㉡愰挲㘷て㝥ㄷ㥢㈴戶愰㍣㠰㘹㉦戲㕤㘲㝣㥡㍥戵搸㥣つぢ戶晢攲㤴㠱搰㤱㝤㙣戸戹昲昵慤㝥攵愴㜱っ㕦つづ㘸㡤晤㈰昲㜱㐲㠷ち㙢ㅦ㜱㡣扢㔰㈳挷愰扣慤㜰挸㌸㤵户㌵ㅣ晣ㄳ愲挱敡㌱㜸㄰㈵ㅡ㙢㙤㍤搵㕥〰ㄲ㜹散㠸ㄵ㜳昶㜶㈹ㅥ㜱挰愳ㄳ昳㌱搰㡤ㄵ戰愲〲ㄳ愳昳㌸敦摢㘷戲挵扤㌳㈷㍦扦㑤㠱慥慤㜲㍢㔷㠹㌵㥢搵昹㔶㠰㜲㔷晥㑦愷づ挳㈱㤴ㅤ攰㔸挱攸挸捥㜶㠲㔰㑦㐲㘵㝦搲ㅣ㍡搳愱ぢ搱搸〶㘳晡晥攰㌹搵ㄹ〱㌹昹㜵㥣㠲㕤㔰挷敥㘰㑣攱挳挴㙣㑣攵〶㈴扥㌶〵㑦挱㙥散て慦ㄷ户㙦ㅦ㠱㜲㡥㝡ㄶ挲㙥㥦ㅢ㠰戵㠲〷挰挷㌸㄰㐲扤㡣㑡㥥㜵晡づ愲㔶㠲晢㑤昸摦㜱扥愱㌸㠹㤶攷ㅣ昶攲㘰捣攴㑢扤ちㄳ㐷换㍣㐸㌵㌷昲㔲慦挱㡦愳㉦摣搳攲㍡㌴愲㘴㝦晤慢搷愱㜰〸㘰㉥㥥㕦㔲㡡㌳㜵昹㐵㤵愳㍤㌰慡ㅤ戰昰攰㘸㜴㘳㤷摥㐰㠹〷ㅤ㙥㠴散愳搱ㅤ愲搹㡤㔰扤㠹〸ㅢ㌸㐶㕢挰ㅤ挲っ㍤㤸㜷愷摥愱㈷ㅤづ愵〳㘷〵㤳㕤愳ㄷ戴㈴㈱敦㌸挲ㅣ㠴昴㘶㔸ㅦ㠶㜱づ慥㄰㜲ㄸ㌴昳ㄴ戰㉦㑡㑥㑡㌸㐳㌷㌳㈵ㅦ挳㈳㙢㑡㍥㠱戳㐹㐹㍦慥㐵㈳搴㈴㈵㥣晤㥢つ㈵㥦挱㉦〳㈵㥦挳㉣㤴っ㘰ㄷ昷㐰戳㈹㘱㉦㡤㐱㄰捤㔳昲〵挲㌴㤴っ㘶㠶㈱捣晢愵摥攱㜰㍡っ愵挳㔷㜰㄰㑡㠶㐱㑢㔲昲㡤㈳捣㐱挹㜰㠶ㅤ挱㌰㙥搸㐲挹㤱搰㑣㑡㡥㐲挹㐹〹㡦㘷㤹㈹挹㠵㐷搶㤴戴㠲戳㐹挹〸慥㐵愳㌴㘶づ㤲ㄵ㠷敡搹㔰攲㠳㕦〶㑡㕡挳㉣㤴㡣㘴ㄷぢ愰搹㤴戰㤷挶㈸㠸收㈹昱㈳㙣㉢㔶㉥敤昰㌶㥡ㄹ㑡㤹户㡤摥愱㡣づ挷搲愱㄰づ㐲挹ㄸ㘸㐹㑡㡡ㅣ㘱づ㑡挶㌲㙣ㅣ挳㍡挲㐱㈸㈹㠷㘶㔲㜲ㅣ㑡㑥㑡㌸捤㌸㌳㈵㥤攱㤱㌵㈵㕤攰㙣㔲㌲㥥㙢㤱㐲挹晥戰㘵㐳〹攷㌲㘷愰攴㈰㤸㠵㤲㠹散㘲〰㥡㑤〹㝢㘹㑣㠶㘸㥥㤲㠳ㄱ戶搵㑤挹ㄴ㘶㤸捡扣摤昴づ搳攸㔰㐱㠷ㄲ㌸〸㈵搳愱㈵㈹改攱〸㜳㔰㌲㠳㘱挷㌳慣㍦ㅣ㠴㤲㤹搰㑣㑡㑥㐰挹㐹〹攷㌱㘷愶㘴㈰㍣戲愶㘴㄰㥣㑤㑡㑥攴㕡愴㔰㌲ㄸ戶㙣㈸攱㘴改っ㤴っ㠵㔹㈸㌹㤹㕤ㅣ〶捤愶㠴扤㌴㘶㐱㌴㑦挹ㄱ〸摢敡愶攴㔴㘶愸㘴摥㈳昵づ愷搱㈱㐸㠷愳攰㈰㤴捣㠶㤶愴㘴愴㈳捣㐱㐹ㄵ挳慡ㄹ㌶づづ㐲㐹〸㥡㐹㐹つ㑡㑥㑡㌸㑤㍡㌳㈵挷挱㈳㙢㑡挶挳搹愴㘴づ搷㈲㠵㤲〹戰㘵㐳〹攷㘲㘷愰㘴㌲捣㐲㐹㤸㕤㥣〲捤愶㠴扤㌴收㐲㌴㑦挹㌴㠴㙤㜵㔳ㄲ㘱㠶㍡收慤搰㍢搴搳㈱㑡㠷改㜰㄰㑡收㐱㑢㔲㌲搳ㄱ收愰攴っ㠶挵ㄸ㜶ㅡㅣ㠴㤲㌸㌴㤳ㄲ㜹戹㔴搳ㄵ㕥ㄵ㠴㑢㘶㑡㘶挳㈳㙢㑡慡攰㙣㔲搲挰戵㐸愱愴ㅡ戶㙣㈸愹㠱㕦〶㑡收挰㉣㤴㉣㘰ㄷ㙢愱搹㤴戰㤷挶㈲㠸收㈹㌹ㅤ㘱㕢摤㤴㥣挹っ㘷㌱敦㕣扤挳搹㜴㌸㠷づㄱ㌸〸㈵㝦㠰㤶愴㈴敡〸㜳㔰㜲㉥挳ㄶ㌳㙣㈱ㅣ㠴㤲昳愸㘱〸㝣㍥晥㜷敥㈳㥣攵㥤㤹㤰㌳攱㤱㌵㈱㘷挱搹㈴㘴〹搷㈱㠵㤰戳㘱换㠶㄰㑥㈵捦㐰挸戹㌰ぢ㈱ㄷ戰㑢㡢愱搹㠴戰㡦挶㌲㠸收〹㌹ㅦ㘱㕢摤㠴㉣㘷㠶ㄵ捣扢㐴敦㜰㈱ㅤ㉥愲挳㔲㌸〸㈱ㄷ㐳㑢ㄲ戲捣ㄱ收㈰攴ㄲ㠶㕤捡戰换攱㈰㠴㕣〶捤摣㐷㉥㐷挹㐹〹㈷㤰㘷愶攴㑡㜸㘴㑤挹㔵㜰㌶㈹戹㠲㙢㤱㐲挹搵戰㘵㐳〹㘷愹㘷愰攴㍡㤸㠵㤲慢搸挵㤵搰㙣㑡搸㑢攳ㅡ㠸收㈹㔹㡤戰慤㙥㑡慥㘵㠶敢㤸㜷㡤摥㘱㈵ㅤ㔶搱㘱㉤ㅣ㠴㤲搵搰㤲㤴慣㜳㠴昱㤹㔰敢㙣㘷つ挳搶㌲㙣㍤ㅣ㠴㤲敢愱㤹㤴摣㠰㤲㤳ㄲ捥㑦捦㑣挹㕤昰挸㥡㤲つ㜰㌶㈹㔹挷戵㐸愱攴㙥搸戲愱㠴㤳攰㌳㔰戲ㄱ㘶愱攴㈶㜶昱㕥㘸㌶㈵散愵㜱ぢ㐴昳㤴㙣㐲搸㔶㌷㈵户㌲挳㙤捣㝢扦摥攱㜶㍡摣㐱㠷捤㜰㄰㑡搶㐳㑢㔲昲愰㈳捣戱㤷摣挹戰扢ㄸ搶〸〷愱㘴〳㌴㤳㤲扢㔱㜲㔲戲ㄵ㉥㤹㈹㜹ㄲㅥ㔹㔳昲ㄴ㥣㑤㑡敥攱㕡愴㔰戲つ戶㙣㈸㜹〶㝥ㄹ㈸㜹ㄶ㘶愱㘴㈳扢昸ㅣ㌴㥢ㄲ昶搲戸て愲㜹㑡㥥㐷搸㔶㌷㈵㥢㤸攱㝥收㝤㐱敦戰㤹づ㝦愶挳㜶㌸〸㈵て㐰㑢㔲昲㤲㈳捣㐱挹㠳っ摢挲戰㌷攰㈰㤴㍣㐴つ摦㈴て攳㝦㈷㈱㥣㘱㥦㤹㤰㌷攱㤱㌵㈱㍢攱㙣ㄲ昲〸搷㈱㠵㤰户㘰换㠶㄰㑥攳捦㐰挸㍢㌰ぢ㈱㡦戱㑢敦㐲戳〹㘱ㅦ㡤㈷㈰㥡㈷攴㝤㠴㙤㜵ㄳ搲挸っ㕢㤹昷〳扤挳㤳㜴㜸㡡づ扢攰㈰㠴㙣㠳㤶㈴攴㐳㐷㤸㠳㤰愷ㄹ昶っ挳昶挰㐱〸㜹ㄶ㥡戹㡦㍣㠷㤲㤳ㄲ㑥摥捦㑣挹ㄷ昰挸㥡㤲㉦攱㙣㔲昲ㄷ慥㐵ち㈵㕦挱㤶つ㈵㝣㐲㈰〳㈵摦挰㉣㤴扣挰㉥㝥ぢ捤愶㠴扤㌴㕥㠴㘸㥥㤲敦ㄱ戶搵㑤挹㕦㤹攱㈵收晤㐱敦昰㌲ㅤ㕥愱挳㡦㜰㄰㑡㕥㠵㤶愴攴ㄷ㐷㤸㠳㤲搷ㄸ昶㍡挳ち㜰晤㔷㈸昹ㅢ㌴㤳㤲扦愳攴愴㠴て〷㘴愶挴て㡦慣㈹㘹〳㘷㤳㤲ㅤ㕣㡢ㄴ㑡ち㘱换㠶ㄲ㍥㠱㤰㠱㤲㈲㤸㠵㤲㝦戰㡢挵搰㙣㑡搸㑢㘳㈷㐴昳㤴散㡤㌰つ㈵㙦㌱挳摢捣摢㕥敦昰㑦㍡扣㐳㠷づ㜰㄰㑡摥㠵㤶愴㘴㍦㐷㤸㠳㤲昷ㄸ昶㍥挳〲㜰㄰㑡㍥㠰㘶㔲戲ぢ㈵㈷㈵㝣〰㈱㌳㈵〷挳㈳㙢㑡扡挱搹愴攴㕦㕣㡢ㄴ㑡㑡㘰换㠶ㄲ㍥攵㤰㠱㤲ㅥ㌰ぢ㈵ㅦ戲㡢㍤愱搹㤴戰㤷挶㙥㠸收㈹改㠵㌰つ㈵ㅦ㌳挳㈷捣摢㕢敦昰㈹ㅤ晥㐳㠷㍥㜰㄰㑡㍥㠳㤶愴愴㥦㈳捣㐱挹攷っ摢挳戰㘱㜰㄰㑡晥ぢ捤愴攴ぢ㤴㥣㤴昰〹㠷捣㤴ㅣ〱㡦慣㈹㌹ㄲ捥㈶㈵㕦㜲㉤㔲㈸㌹ち戶㙣㈸攱㘳ㄴㄹ㈸ㄹ〹戳㔰昲㌵扢㜸っ㌴㥢ㄲ昶搲昸〶愲㜹㑡㐶㈳㑣㐳挹户捣昰ㅤ昳㤶敡ㅤ扥愷挳て㜴㈸㠳㠳㔰昲㈳戴㈴㈵㘳ㅤ㘱づ㑡㝥㘲搸捦っ㥢〲〷愱攴ㄷ㘸㈶㈵㌲㌳捣㜱收捥㘷㈸㌲㔳㌲つㅥ㔹㔳㔲〱㘷㤳ㄲ摥扣㑢愵㘴㍡㙣搹㔰挲〷㌵㌲㔰㌲ㄳ㘶愱愴ㄵ㕡㔰㈷㐰戳㈹㘱㉦㡤㝣搴㌶㑦挹㐹〸搳㔰攲攳㑡户㘶摥㤳昵づ〵㜴攰晢戱搵㈹㜰搸㠶捤摢昰㐳㑢㔲㔲改〸㐳扤㝤㔶搲〶㘵愳㄰㐲搵挲㐱㈸㘹ぢ捤愴愴ㅤㅤㅤ㤴昰㈹㡤捣㤴㥣づ㡦慣㈹㤹ぢ㘷㤳㤲㈲慥㐵捡㕥ㄲ㠱㉤ㅢ㑡昸㈸㐸〶㑡愲㌰ぢ㈵㝢戱㡢昳愰搹㤴戰㤷㐶㝢㠸收㈹㠹㈱㑣㐳㐹〷㘶搸㠷㜹攳㝡㠷㝤改戰ㅦㅤㄲ㜰搸㐶㑡㍡㐲㑢㔲戲挰ㄱ㠶㝡㥢㤲㑥㈸ㅢ㥤㈱搴㘲㌸〸㈵㕤愰㤹㤴散㑦㐷〷㈵㝣ち㈴㌳㈵攷挳㈳㙢㑡㤶挰搹愴攴〰慥㐵ち㈵㑢㘱换㠶ㄲ㍥㙡㤲㠱㤲㘵㌰ぢ㈵〷戱㡢换愱搹㤴戰㤷㐶㔷㠸收㈹戹㄰㘱ㅡ㑡づ㘶㠶㙥捣㝢㤱摥愱㠴づ摤改㜰㌱ㅣ戶㤱㤲㐳愰㈵㈹戹捣ㄱ㠶㝡㥢㤲ㅥ㈸ㅢ㍤㈱搴㑡㌸〸㈵㠷㐲㌳㈹改㐵㐷〷㈵㝣搴㈴㌳㈵慢攱㤱㌵㈵㙢攰㙣㔲搲㥢㙢㤱㐲挹㕡搸戲愱㠴捦戳㘴愰㘴ㅤ捣㐲挹㘱散攲㡤搰㙣㑡搸㑢愳ㅦ㐴昳㤴摣㡣㌰つ㈵晤㤹㘱〰昳摥愲㜷ㄸ㐸㠷㐱㜴戸ㄵづ摢㐸挹㘰㘸㐹㑡敥㜰㠴愱摥愶㘴〸捡挶攱㄰敡㕥㌸〸㈵㐳愱㤹㤴っ愳愳㠳ㄲ㍥挹㤲㤹㤲㑤昰挸㥡㤲晢攱㙣㔲㌲㥣㙢㤱㐲挹㘶搸戲愱㠴㡦换㘴愰攴㐱㤸㠵㤲㈳搹挵㉤搰㙣㑡搸㑢㘳〴㐴昳㤴㍣㡣㌰つ㈵㐷㌳挳㐸收㝤㐴敦㜰っㅤ㐶搱攱㔱㌸㙣㈳㈵愳愱㈵㈹㜹挲ㄱ㠶㝡㥢㤲㔲㤴㡤㌲〸昵ㅣㅣ㠴㤲㘳愹攱摣㝤っ摤ㅣ㠴昰㐱㤹捣㠴㍣て㡦慣〹㜹〱捥㈶㈱㘳戹づ㈹㠴㙣㠷㉤ㅢ㐲昸㌴㑥〶㐲㕥㠲㔹〸㈹㘷㤷㕥㠶㘶ㄳ挲㍥ㅡ攳㈱㥡㈷攴㔵㠴㘹〸㤹挰っㄳ㤹昷㌵扤挳㈴㍡㑣愶挳敢㜰搸㐶㐲愶㐰㑢ㄲ戲挳ㄱ㠶㝡㥢㤰愹㈸ㅢ搳㈰搴扢㜰㄰㐲㉡愰㤹晢挸㜴㍡㍡㈸攱㌳㌸㤹㈹㜹ㅦㅥ㔹㔳昲〱㥣㑤㑡㘶㜰㉤㔲㈸搹〵㕢㌶㤴昰㐱㥦っ㤴㝣〸戳㔰㌲㤳㕤晣〸㥡㑤〹㝢㘹㥣〸搱㍣㈵ㅦ㈳㑣㐳挹㐹捣㜰㌲昳㝥愲㜷㌸㠵づ戳攸昰㈹ㅣ戶㤱㤲㔳愱㈵㈹昹摣ㄱ㠶㝡㥢㤲㑡㤴㡤搳㈰搴户㜰㄰㑡㠲搰㑣㑡㘶搳搱㐱〹ㅦ昱挹㑣挹昷昰挸㥡㤲ㅦ攰㙣㔲㔲挵戵㐸愱攴㐷搸戲愱㠴捦ㄱ㘵愰攴ㄷ㤸㠵㤲㄰扢㤸㠳㘱慦㑤〹㝢㘹捣㠱㘸㥥㤲㕣㠴㘹㈸愹㘵㠶㌰昳戶搲㍢㥣㑥㠷戹㜴挸㠳挳㌶㔲ㄲ㠱㤶愴愴戵㈳っ昵㌶㈵㜵㈸ㅢ昵㄰昹㝢挱㈱扢㐷㔲㌸㙢慥搸昱㥣㄰㘷㔳挶昷慡㤹摡㄰㡣攰㐷㐶㈶㘳挲㝡㠲㔵扦㠷改㡡㜹收㘳〳改慦戰㑥晤敤ㄱ㍣㙤㈳㕤㌸㜹搶㠱攸㔹㍡〶愹扥㔶摦攲昴晣㜵㡦ㄵ昸昳慦昸攱㤷㕦戲㙢㐵愱㤵搶昳昹摡搴捡捡㥣〲戶〹㤲㐰ㅤ㈷㔸敦㡤㘲㠶㔹扢㘹㌳散㤹愹㝤搳搴㐳㑥㈷敤ㅤ攱捦ㄱ改收㉣愶㑥摥㥤㠷慤㐳㜵㐰㙢捣㘱㥣㐱捤㕡㤱晣晤㔰摢散捣㑦〴攰搱㈱捥〱慤㐸㉣㡡㘰摥㉤㡢㝣ㄷ愸㔹攲昴㐳搳㡣搵㡢挶昲昰㤴㔴晡摢㝦㤳戱て㈰㔵㥢づ㘹㙦㕢㤶㌰㕡昶挱摡攴㕦ち㜰㍤攳㔳昱㘴っㄷ㕦ㅣ慢搸㘱㘲戸㉡ㄶ㡤㐷㙢ㄲ㠱ち㑣ㅤて昰晤摢㜸㍤㑥晦㔱昹ㄷ㈳愳戶㑤㜶㉣慦㥥扦愴㈳ㄴ昹攷搶㐷ㄷ搴换摡攴挷昹ㅡ㜲挱慢㜵㙢㌶挳㐷ぢ㘴改〶昰㡡㍢㘲㐵戹ㄴ㜷戲ぢ㥤敤㐲ㄷ慢㔰戴㍦ち㡣昲㠹攷㙦㈸㡡て㐰㘶戶攲㙢㐰〷昶㉡ㅤ㕤㤹晡㈳㐱扥昹愸㉥㐴戵㑣㙥㥤㠶㌷㜶晢ㄶ愰愶ㅤ㙡ㅣ㌳挱㡢て戴戲ㄸぢ㘱㌴扡㈲㥦ㄱ㠰㔰〱搴昳㔰攲㔷ㄷ〰㌷㙥敡㙣㑢㌶㔹搵ㄵ㐵㙥戶挶搹㠸㔱摤㔰ㄲ㠸捥愱〶㈷㍡慡敥㤰摣慣搴昹〸㈵㤹愸挴㥢っ攰㐲㌲搴㘲搴㤰㤰㔴㐰て㘱㈸㤶攲ㅥ㜶愱愷㕤㌸搴㉡ㄴ昵㐲愱㘵〰敤㡤捣㙣挵㈰愰〶攱㌳㠸㔸㜱ㅦ扢㝥㈹慢㝡搰攳㄰〸搵ㄷ昵㈶㐴㡢搰㤳㔴㠸晡挱㈶㄰㉤㐷㡣ㅡ〰㑤㈰㕡㐱つ戱搰㜳搴㈰㐸㠱㘸㍥挲㙤㠸㝣ㄷ挱挵㜳㈳㔶〹㉤㙥㠳㤹て㑢昱㄰扢㜰戸㕤ㄸ㙡ㄵ㡡㠶愱搰㌲戸つ㐷㘶戶㤲㡥摢ㄱ㜶晤攵挴㡤慦㝥㌵晡㐰愸愳㔰㙦攲㔶攷挲㙤〴㙣㠲摢搵㐴㙡㈴㌴挱敤ㅡ㈷㙥愳㔰㉢戸㥤敥挰慤㘹搳慡搵㐲㌴ㅡ㐱㕣㡡㑢敤㐲㤹㕤㌸搶㉡ㄴ㡤㐱愱㘵㈰ㅡ㡢捣㙣㈵ㅤ愲㜱㜶晤㕡㐲㌴㠸ㅥ㝣愰㐳ㅤ㠷㝡ㄳ愲愰ぢ愲昱戰〹㐴㌷ㄲ㤴㠹搰〴愲㥢㥣㄰㑤㐶慤㐰㜴慡ㄳ㈲㙥㕡戲昷㥤愲㠵㘸ち㠲戸ㄴ㑦戵ぢ搳散㐲㠵㔵㈸㥡㡥㐲换㐰㌴〳㤹搹㑡㍡㐴挷摢昵敢〹搱㜰㝡っ㠳㔰㈷愰摥㠴㘸㠶ぢ愲ㄳ㘱ㄳ㠸敥㈶㈸㈷㐳ㄳ㠸敥㜱㐲㌴ぢ戵〲搱㌴㉤㐴㔳戴㄰㥤㡡㈰㉥挵㤵㜶攱㌴扢㄰戴ち㐵戳㔱㘸ㄹ㠸慡㤰㤹慤愴㐳㔴㙤搷㙦㈶㐴㈳改㜱㌴㠴慡㐱扤〹㔱戹ぢ愲㌹戰〹㐴㕢〸㑡ㄸ㥡㐰昴㤰ㄳ愲戹愸ㄵ㠸挶㘸㈱㉡搳㐲ㄴ㐱㄰㤷攲㍡扢㔰㙦ㄷ愲㔶愱㘸ㅥち㉤〳搱ㄹ挸捣㔶搲㈱㡡搹昵㡤㠴㠸敦㙦㌵捡㈰㔴〲昵㈶㐴㈳㕣㄰㌵挰㈶㄰㙤㈳㈸ぢ愰〹㐴㑦㍢㈱㕡㠴㕡㠱攸〸㉤㐴挳戴㄰㥤㠹㈰㉥挵㘷搹㠵戳敤挲㌹㔶愱攸て㈸戴っ㐴攷㈲㌳㕢㐹㠷㘸戱㕤扦㥤㄰㡤愷挷㜱㄰敡㝣搴㥢㄰つ㜰㐱戴〴㌶㠱攸㘵㠲㜲〱㌴㠱攸ㄵ㈷㐴换㔰㉢㄰昵㜵㐲㤴ㅣ〹昴搱㐲戴ㅣ㐱㕣㡡㔷搸㠵ぢ敤挲㐵㔶愱攸㘲ㄴ㕡〶愲㑢㤰㤹慤愴㐳㜴愹㕤晦〶㈱攲ぢ㕡㡤㈹㄰敡㜲搴㥢㄰㜵㜷㐱㜴〵㙣〲搱㕢〴攵㉡㘸〲搱摢㑥㠸慥㐱慤㐰㜴戰ㄳ愲攴攱㍡愰㠵攸㕡〴㜱㈹扥捥㉥慣戴ぢ慢慣㐲搱㙡ㄴ㕡〶愲㌵挸捣㔶搲㈱㕡㙢搷敦㈲㐴㌳改㜱㍣㠴扡〱昵㈶㐴㥤㕣㄰慤㠳㑤㈰晡㠸愰摣〴㑤㈰摡敤㠴攸ㄶ搴ち㐴晢㍡㈱㑡㙥㐵ㅤ戴㄰摤㡡㈰㉥挵户搹㠵摢敤挲ㅤ㔶愱㘸㍤ち㉤〳搱㥤挸捣㔶搲㈱扡换慥摦㐳㠸㘶搱㠳㉦㜶㔵㜷愳摥㠴愸慤ぢ愲㝢㘰ㄳ㠸扥㈲㈸ㅢ愱〹㐴㕦㍢㈱扡て戵〲㤱㕦ぢ㔱㠱ㄶ愲㑤〸攲㔲㝣扦㕤搸㙣ㄷ晥㙣ㄵ㡡ㅥ㐰愱㘵㈰㝡㄰㤹搹㑡㍡㐴㕢散晡ㅦ〹㔱ㄵ㍤㘶㐳愸㠷㔱㙦㐲愴㕣㄰㍤〲㥢㐰㤴㠳〹㡢敡㌱㘸〲ㄱ㝦㕤㤳〵攸㌹敡〹㐸㠱攸攷敦㥢㠶摣㑤㐳挷ㅦ㔱敢㍥㉢㘹㘴㈸㤶攲慤㜶攱㐹扢昰㤴㔵㈸摡㠶㐲换㐰昴㌴㌲戳㤵㜴㠸㥥戱敢ぢ搰㐱昹搱㐲㠳㉦㙦㔵捦愱摥㠴攸㙢昴㈶昵慣攴㉦戰〹㐴㠵〴攵〵㘸〲㔱㕢㈷㐴㉦愲㔶㈰晡挲〹㔱昲㔸戴㐷ぢ搱㕦ㄱ挴愵昸㈵扢昰戲㕤㜸挵㉡ㄴ扤㡡㐲换㐰昴ㅡ㌲戳㤵㜴㠸㕥户敢㍢㄰愲㈸㍤昸㥥㔶昵㜷搴㥢㄰敤㜶㐱戴〳㌶㠱愸㈳㐱昹〷㌴㠱愸㤳ㄳ愲㥤愸ㄵ㠸晥敤㠴㈸㜹㉣摡愵㠵攸㉤〴㜱㈹㝥摢㉥晣搳㉥扣㘳ㄵ㡡摥㐵愱㘵㈰㝡て㤹搹㑡㍡㐴敦摢昵〱㐲挴㌷愷ㅡ㝣㉦慢摡㠵㝡ㄳ愲户㕤㄰晤ぢ㌶㠱愸㠴愰㝣〸㑤㈰敡敥㠴㘸㌷㙡〵愲㌷㥤㄰㈵户愲㌷戴㄰㝤㡣㈰㉥挵㥦搸㠵㑦敤挲㝦慣㐲搱㘷㈸戴っ㐴㥦㈳㌳㕢㐹㠷㘸㡦㕤摦㠷㄰㥤㐵㡦㌳㈱搴ㄷ愸㌷㈱㝡挵〵搱㤷戰〹㐴晤〹捡搷搰〴愲〱㑥㠸扥㐱慤㐰昴㔷㈷㐴挹慤㘸扢ㄶ愲㙦ㄱ挴愵昸㍢扢昰扤㕤昸挱㉡ㄴ晤㠸㐲换㐰昴ㄳ㌲戳㤵㜴㠸㝥戶敢㠷ㄱ愲昳攸戱ㄸ㐲㕥㤴㘴㐲昴戴ぢ㈲㠵㈳扢㐰㜴ㄴ㐱㤱搹㈶㡣ㅢ攱㠴㈸ㅦ㍥〲搱㤳㑥㠸㤲㕢㔱愳ㄶ㈲ㅦ㠲戸ㄴ㜳愶㠹ㄴち散㠲㘱ㄵ㡡㌸慢愴㘵㈰㙡㠳捣㍡㠸ち敤晡㌲㐲戴っ敢㘵昰㜵慢㡡搳㔳㑣㠸ㅥ㜲㐱挴ㄹ㈵〲搱㌸㠲戲ㄷ㌴搹㡡捡㥤㄰戵㐷慤㐰昴㠰ㄶ愲捤㕡㠸㍡㈰㠸㑢昱㍥㜶㠱搳㍣愴㘶㍦慢㔰搴ㄱ㠵㤶㠱㠸㜳㐳㜴㄰㜱扡㠸搴㑦㈱㐴㝣〵慡挱ㄷ慣慡晤㔱㙦㐲㜴㡦ぢ愲〳㘰ㄳ㠸愶ㄳㄴ㤹㡤挱戸ㄹ㑥㠸扡挲㐷㈰扡换〹㔱㜲㐷㕢慦㠵㠸戳㌰戸ㄴ㜳㈶㠶ㄴ㑡散㐲㜷慢㔰㜴〸ち㉤〳ㄱ攷㙡攸㈰敡㘹搷㥦㐲㠸慥挲㝡ㄹ㔷㐲㈸㑥摦㌰㈱扡挹〵㔱㙦搸〴愲搳〸㡡捣㡥㘰㕣搰〹ㄱ㘷㐷〸㐴㌷㌸㈱㑡敥㘸㙢戵㄰昵㐷㄰㤷攲〱㜶㠱搳㈰愴㘶㤰㔵㈸ㅡ㡣㐲换㐰㌴〴㤹㜵㄰㜱㍡㠵搴搷ㄲ愲㔵㔸ㅤ㘳㈵㠴ㅡ㠶㝡ㄳ愲㙢㕣㄰㜱〶㠴㐰ㄴ㈱㈸㌲㕢㠱㜱㜵㑥㠸㐶挰㐷㈰扡㔲ぢ搱攵㕡㠸㌸㑢㠱㑢㌱㘷㉡㐸攱ㄸ扢㌰捡㉡ㄴ㜱㔶㐲换㐰挴戹っ㍡㠸捡散晡〴㈱㕡㠷昵㌲㙥㠰㔰㘳㔰㙦㐲戴挲〵ㄱ攷㈴〸㐴ぢ〹㑡㌹㌴㌹ㄶ㉤㜲㐲㌴ㅥ戵〲搱ㅦ㥤㄰㈵㜷戴愵㕡㠸㈶㈰㠸㑢㌱攷づ㐸㠱ㄳ〵愴挰挹〲㕣㡡愶愰搰㌲㄰㑤㐵㘶ㅤ㐴㥣㜰㈰昵㡢〹搱㙤㔸〹攳㔶〸㌵ㅤ昵㈶㐴攷戸㈰㥡〱㥢㐰戴㤴愰挸晤㝣挶㕤攰㠴㠸昷昳〵愲㌳㥤㄰㈵㜷戴㠵㕡㠸㜸ㅦ㥦㑢㌱敦攵㑢攱ㄴ扢㌰换㉡ㄴ昱扥㝤换㐰挴扢晤㍡㠸㌸〱㐰敡㉦㈶㐴ㅢ戰㕥挶㕤㄰㡡ㄳ〰㑣㠸捥㜰㐱挴㝢昶〲搱攵〴挵扣扦㡥戸㉢㥣㄰昱晥扡㐰㔴敦㠴㈸戹ㄵ㐵戴㄰搵㈲㠸㑢㜱搸㉥昰㐶扡搴捣戵ち㐵ㄱㄴ㕡〶㈲摥㝤搷㐱挴ㅢ昲㔲扦㤲㄰昱つ愵挶扤㄰㙡ㅥ敡㘵昷㔹㠳㝡㝢㈹㍥〳戵昸挳〳㜶愸㙤摢㑡㉤㠴㔲㐲晤〵㡡敤ㄴ㉦㐲愸搳㠰挰㑥扣㔵摦昵攳㜴㤵㤶挱昵㉢㠸㘷㈳㤳扢扤㜳㔰㡢㍦㍣搷㘶戶户ㄴ㑡〹昵戴昶㑥昴㙡敦〴换攰晡晤挰攵挸㈴敤摤改散摦ち搴攲て㥢㠹搹摥攵㔰㑡㌴敤㑤昳㙡㙦慡㘵㜰晤昸摥搵挸攴敥摦㌵愸挵ㅦ㠰㌷摢㕢ぢ愵㐴搳摥㜸慦昶㡥戳っ慥㥦慦扢ㄱ㤹摣晤扢〹戵昸挳愳㕦㘶㝢敢愱㤴㘸摡㉢昳㙡慦搴㌲戸㝥晣敤㙥㘴㜲户挷摢ㄹ昸挳㌳㔷㘶㝢㥢愱㤴㘸摡ㅢ攱搵摥㔱㤶挱昵挳㘹㕢㤰挹摤ㅥ敦つ攰て㑦㔲㤹敤㌵㐲㈹搱戴㜷戸㔷㝢㐳㉣㠳敢㔷挷戶㈱㤳扢㍤㕥㘸挷ㅦ戶㝡戳扤敤㔰㑡㌴敤昵昳㙡慦慦㘵㜰晤㘶搷换挸㈴敤愵散㝦慦愰ㄶ㝦㜸㉣挹㙣敦つ㈸㈵㥡昶㝡㝡戵搷挳㌲戸㝥敢敡㉤㘴㜲昷敦㙤搴攲て㑦〳㤹敤敤㠲㔲愲㘹慦慢㔷㝢〱换攰晡㥤愸㡦㤰挹摤扦摤愸挵ㅦ㥥昱㌱摢摢〳愵㐴搳㕥㘷慦昶㍡㔹〶搷捦㉣㝤㠵㑣敥昶扥㐶㉤晥昰㘸㡤搹摥㡦㔰㑡㌴敤戵昷㙡㙦㙦换攰晡㤵㈲戹挲挷㑣㈹晣昱㑡㥦戴户挷㙣㡦ㄷ挶㜴敤ㄵ㝡戵搷挶㌲戸㝥摤愷㄰㤹摣晣昱戲㤹戴昷㡤搹ㅥ慦㌲改摡换昷㙡㉦捦㌲戸㝥ㅡ愷愳摤㕥㑡晦㜸つ㑡摡晢搹㙣㡦㤷㙣㜴敤晤晣㥤挷昷挳㑦㤶挱昵摢㌲㜲㈱㠷㜸愶ㅣ慦㜹㐱㐷摡换挷攴ㄵ㝣ㅦ昵昱㘸敦ㅢ慦昶晥㘷ㄹ㕣扦捣㈲㔷㐵㕣晣昱敡㠸戴㔷㘸戶㌷捣愳扤㍤㕥敤㝤㙥ㄹ㕣㍦㙣㈲㤷ㄸ㕣晤攳愵〶㘹慦扤搹ㅥ捦捣㜵㜸敥昶㙡敦㈳换攰晡㕤㄰㌹㕦㜷戵挷昳㜶㘹慦戳搹ㅥ㑦㜳㜵敤扤敦搵摥㝢㤶挱昵愳ㅡ㜲昲敢挲㤳㈷挱搲㕥㔷戳㍤㥥㌳敡摡摢改搵摥㥢㤶挱昵戳ㄴ㜲㈶改敡ㅦ捦㈸愵扤㥥㘶㝢㍣〱搳戵昷扡㔷㝢慦㔹〶搷㑦㍡㐴㤰挹扤晦昱昴㑣摡敢㘷戶挷戳ㄹ㕤㝢㉦㝡戵户摤㙥㉦晤〷ㄱㄶ摡敤愵散㝦㍣搷㤱昶づ㌷摢攳愹㠱慥扤㘷扣摡㝢摡㌲戸㝥㐸㐰㑥ㄸ㕣㜸昲挴㐱摡ㅢ㘱戶挷㜱戶慥扤㈷扣摡㝢摣㌲戸㕥挲㉦愳㙦搷昶挲㔱戸戴㔷㘶戶户搲愳扤㉤㕥敤㍤㘸ㄹ搲摦㘲㕦㙣挳㤸捦㤱㙤㉦敦昷愵㥢㉦摢挴㡣扤㔰㕣摥㈹㕢㠴㜵捣慦攱ㅣ挳㌶㌵㥣挸ㄷ㤲㌷㝥捡㙢捡㈳㌲㐱慦㄰敦摤㡣捤つ挵㈶攰㉤戲㜸摢㘶㐵搸晡ㅤ昲㜲扣㕤㤶㙦㐵戴摦昷㘸㠸挶搹愱扥㥡挹㌱扣〰戲㜵㑤㜹ㅣ敦慡慤㉥挰㉦搷㈷ㄲ愱㔸晤敦㘱㤶㉢慥㤷收㘱敥㌱ㄶ昳㜵㥣摡搹㡡㥣㠶㤸晥㝥㐸挷ぢ㜹㥢昰戰㕦挸㥣换搷㜵晥扡㌹慥㌲扤㍡㔷晤ㄹ扣捡㙤戱㑦〶㜶㤲㜹㝣㜸〵㈸㝥㐰ㄷ㕢㠹㕦挹晡㉡㑣っㄴ㕦ㄱ㜸㑡〶㌴㤳㙡㉢㝥㤳㌶㝥戲㘷㝣戱晤㌵愴㜸愶攰㐸戴㔱㥢㘸㥡㘷㈲挵㤱扦㈳晥㙥㙤晣っ敦昸㉤愹昱㜷㙡攳㑦昰㡥攷挸摣搱晥敤摡昸㤳扤攳㌹搲㜶挴摦愲㡤㍦搵㍢㥥㈳㘷㐷晣㡤摡昸愰㜷㍣㐷挲㡥昸敢戵昱搵摥昱㍢㔳攳㔷㙢攳攷㜸挷㜳愴敡㘸晦㍡㙤晣改摥昱ㅣ㜹㍡攲慦搶挶搷㜹挷㜳㈴改㠸扦㐲ㅢ㍦捦㍢㥥㈳㐳㐷晣愵摡昸戸㜷㍣㐷㝡㡥昸㡢戴昱昳扤攳㌹㜲㜳挴㉦搷挶㉦昲㡥攷㐸捣ㄱ㝦㠱㌶晥㙣敦㜸㡥慣ㅣ昱攷㙢攳捦昵㡥攷㐸挹ㄱ㝦慥㌶晥㝣敦㜸㡥㝣ㅣ昱㘷㙢攳㉦昰㡥攷㐸挶ㄱ扦㐸ㅢ扦摣㍢㥥㈳ㄳ㐷晣㝣㙤晣㐵摥昱ㅣ㘹㌸攲攳摡昸㑢扤攳㌹㜲㜰挴捦搳挶㕦攱ㅤ捦㤱㠰㈳扥㑥ㅢ㝦戵㘷㝣㍥扦㈳戲晥戲攲〸敦㔷㍥摢㜰㉤摡㔱晣㐲㘱㠳挶㜵搴昸慤㈰摡㑡㙡㍣挶㡢戶㡡ㅡ㡦搸愲慤愶挶攳慦㘸㙢愸昱㘸㉡摡㕡㙡㍣㌶㡡㜶㍤㌵ㅥ改㐴扢㠱ㅡ㡦㕢愲慤愳挶愳㤰㘸㌷㔲攳㌱㐵戴㥢愸昱〸㈱摡捤搴戸扦㡢㜶ぢ㌵敥扤愲摤㑡㡤晢愲㘸户㔱攳㥥㈵摡敤搴戸㥦㠸㜶〷㌵㙥昵愲慤愷挶㙤㔸戴㍢愹㜱㡢ㄴ敤㉥㙡摣扥㐴摢㐰㡤㕢㡢㘸㜷㔳㈳昷愲摤㐳㡤㑣㡡昶㈷㙡〲㉡㌸㐹㌹换㔶〲慥慢㔶㐰㘶慤晤搵㡤㜲㡥ㄲ戰㕤扥〲扡换㔷挰㜷搵ち〹慥㕡㈱挳㔵㉢愴戰搶ㅥ㙥愲㥣愳㠴ㅣ㤷慦㤰攴昲ㄵ戲㕣戵㐲㥡慢㔶挸㜳攵ㄵㄲ㕤扥㐲愶换㔷㐸㜵昹ち戹㉥㕦㈱搹㔵㉢㘴扢㌲〸改㉥㕦㈱摦㔵㉢ㅢ㠱㉢㠳㙣っ㉥㕦搹㈸搲㝤摢晣㍦㝦㌱搶愱
H40: Decisioneering:7.0.0.0

Sheet RECS Households
B1: RECS Households
G2: # of households = | I2: =COUNT(DOEid) -> 3835
B3: Export Parameters | G3: RECS 2005 Households with Microwave Ovens
B4: To Energy Use: | G4: DOEID | H4: NWEIGHT | I4: Div&LrgState | J4: YEARMADE | K4: AMTMICRO | L4: NUMMEAL | M4: Division | N4: Avg use / day | O4: Average meals/day | P4: Poor100 | Q4: Seniors | R4: NHSLDMEM | S4: DOEID | T4: Low-Income | U4: DOEID | V4: Senior-Only
B5: Use relative to U.S. avg | C5: =C6/MO_US_use -> 9.327096862
B6: # Use/day | C6: =IF((VLOOKUP(id, RECSdata, 6))=0, D40*D25, INDEX(NUMMEAL, VLOOKUP(id, RECSdata, 6)+1) * INDEX(AMTMICRO, VLOOKUP(id, RECSdata, 5))) -> 3.278670753 | G6: 1 | H6: 25677.96525 | I6: 12 | J6: 3 | K6: 1 | L6: 3 | M6: 7 | N6: =INDEX(NUMMEAL_AVG,L6+1) * INDEX(AMTMICRO_AVG,K6) -> 1 | O6: =INDEX(NUMMEAL_AVG,L6+1) -> 1 | P6: 0 | Q6: 0 | R6: 2 | S6: 1 | T6: =IF(P6=1, H6,0) -> 0 | U6: 1 | V6: =IF(R6=Q6, H6, 0) -> 0
B7: Use % | C7: =INDEX(AMTMICRO, VLOOKUP(id, RECSdata, 5)) -> 0.9720299157 | G7: 2 | H7: 24261.81026 | I7: 11 | J7: 6 | K7: 4 | L7: 3 | M7: 9 | N7: 0.15 | O7: 1 | P7: 0 | Q7: 0 | R7: 4 | S7: 2 | T7: =IF(P7=1, H7,0) -> 0 | U7: 2 | V7: =IF(R7=Q7, H7, 0) -> 0
B8: To Energy Prices and Equipment Price: | G8: 3 | H8: 31806.29502 | I8: 3 | J8: 4 | K8: 2 | L8: 4 | M8: 3 | N8: 0.25 | O8: 0.5 | P8: 0 | Q8: 0 | R8: 2 | S8: 3 | T8: 0 | U8: 3 | V8: 0
B9: Div & Lrg State | C9: =VLOOKUP(id, RECSdata, 3) -> 3 | D9: to select Elec price | G9: 4 | H9: 22345.39749 | I9: 9 | J9: 1 | K9: 2 | L9: 2 | M9: 9 | N9: 1 | O9: 2 | P9: 1 | Q9: 0 | R9: 8 | S9: 4 | T9: 22345.39749 | U9: 4 | V9: 0
D10: and sales tax rate | G10: 5 | H10: 18842.45542 | I10: 6 | J10: 8 | K10: 3 | L10: 4 | M10: 6 | N10: 0.125 | O10: 0.5 | P10: 0 | Q10: 1 | R10: 5 | S10: 5 | T10: 0 | U10: 5 | V10: 0
B11: Division | C11: =VLOOKUP(id, RECSdata, 7) -> 3 | G11: 6 | H11: 5665.875418 | I11: 2 | J11: 5 | K11: 4 | L11: 3 | M11: 2 | N11: 0.15 | O11: 1 | P11: 0 | Q11: 0 | R11: 8 | S11: 6 | T11: 0 | U11: 6 | V11: 0
G12: 8 | H12: 29405.32354 | I12: 7 | J12: 5 | K12: 4 | L12: 2 | M12: 7 | N12: 0.3 | O12: 2 | P12: 0 | Q12: 0 | R12: 4 | S12: 8 | T12: 0 | U12: 8 | V12: 0
B13: To Discount Rate: | G13: 9 | H13: 34572.0663 | I13: 13 | J13: 9 | K13: 1 | L13: 4 | M13: 5 | N13: 0.5 | O13: 0.5 | P13: 0 | Q13: 0 | R13: 4 | S13: 9 | T13: 0 | U13: 9 | V13: 0
B14: Repl or New? | C14: =IF(OR(D21<10, D21>13), 1, 2) -> 1 | D14: (1=repl, 2=new) | G14: 10 | H14: 29899.02765 | I14: 2 | J14: 7 | K14: 4 | L14: 5 | M14: 2 | N14: 0.021 | O14: 0.14 | P14: 0 | Q14: 0 | R14: 1 | S14: 10 | T14: 0 | U14: 10 | V14: 0
G15: 12 | H15: 31646.77098 | I15: 2 | J15: 6 | K15: 4 | L15: 3 | M15: 2 | N15: 0.15 | O15: 1 | P15: 0 | Q15: 1 | R15: 5 | S15: 12 | T15: 0 | U15: 12 | V15: 0
B16: Local Parameters | G16: 14 | H16: 36233.89929 | I16: 13 | J16: 5 | K16: 3 | L16: 3 | M16: 5 | N16: 0.25 | O16: 1 | P16: 0 | Q16: 0 | R16: 3 | S16: 14 | T16: 0 | U16: 14 | V16: 0
B17: Sampled House ID | D17: =INDEX(D18:D20, MATCH(subgroup, list_Subgroup,0)) -> 4112 | G17: 16 | H17: 25591.02703 | I17: 7 | J17: 9 | K17: 4 | L17: 2 | M17: 7 | N17: 0.3 | O17: 2 | P17: 0 | Q17: 0 | R17: 2 | S17: 16 | T17: 0 | U17: 16 | V17: 0
B18: National | D18: 4112 | G18: 18 | H18: 25955.15655 | I18: 11 | J18: 2 | K18: 4 | L18: 2 | M18: 9 | N18: 0.3 | O18: 2 | P18: 0 | Q18: 0 | R18: 2 | S18: 18 | T18: 0 | U18: 18 | V18: 0
B19: Low-Income | D19: 3615 | G19: 19 | H19: 36422.56289 | I19: 11 | J19: 5 | K19: 2 | L19: 4 | M19: 9 | N19: 0.25 | O19: 0.5 | P19: 0 | Q19: 1 | R19: 1 | S19: 19 | T19: 0 | U19: 19 | V19: 36422.56289
B20: Senior-Only | D20: 2550 | G20: 20 | H20: 30185.84401 | I20: 3 | J20: 2 | K20: 4 | L20: 3 | M20: 3 | N20: 0.15 | O20: 1 | P20: 1 | Q20: 0 | R20: 4 | S20: 20 | T20: 30185.84401 | U20: 20 | V20: 0
B21: YEARMADE | D21: =VLOOKUP(id, RECSdata, 4) -> 1 | G21: 21 | H21: 29329.38729 | I21: 2 | J21: 8 | K21: 4 | L21: 3 | M21: 2 | N21: 0.15 | O21: 1 | P21: 0 | Q21: 2 | R21: 2 | S21: 21 | T21: 0 | U21: 21 | V21: 29329.38729
G22: 23 | H22: 37566.67395 | I22: 11 | J22: 3 | K22: 1 | L22: 1 | M22: 9 | N22: 3 | O22: 3 | P22: 0 | Q22: 1 | R22: 7 | S22: 23 | T22: 0 | U22: 23 | V22: 0
B23: U.S. Average Microwave Use per Day | G23: 24 | H23: 19827.83893 | I23: 6 | J23: 4 | K23: 3 | L23: 1 | M23: 6 | N23: 0.75 | O23: 3 | P23: 0 | Q23: 2 | R23: 2 | S23: 24 | T23: 0 | U23: 24 | V23: 19827.83893
B24: Wt. avg. of #use / day | D24: 0.3515210361 | E24: SUMPRODUCT(Nweight, N6:N3840)/SUM(Nweight) | G24: 25 | H24: 28107.32949 | I24: 2 | J24: 2 | K24: 1 | L24: 3 | M24: 2 | N24: 1 | O24: 1 | P24: 0 | Q24: 0 | R24: 4 | S24: 25 | T24: 0 | U24: 25 | V24: 0
B25: Wt. avg. of #meals / day | D25: 1.167229445 | E25: SUMPRODUCT(Nweight, O6:O3840)/SUM(Nweight) | G25: 26 | H25: 29637.10762 | I25: 7 | J25: 5 | K25: 3 | L25: 3 | M25: 7 | N25: 0.25 | O25: 1 | P25: 0 | Q25: 0 | R25: 4 | S25: 26 | T25: 0 | U25: 26 | V25: 0
G26: 27 | H26: 27042.03359 | I26: 11 | J26: 7 | K26: 4 | L26: 4 | M26: 9 | N26: 0.075 | O26: 0.5 | P26: 0 | Q26: 0 | R26: 2 | S26: 27 | T26: 0 | U26: 27 | V26: 0
B27: RECS Code Definitions | G27: 28 | H27: 8785.127525 | I27: 3 | J27: 6 | K27: 3 | L27: 2 | M27: 3 | N27: 0.5 | O27: 2 | P27: 0 | Q27: 1 | R27: 1 | S27: 28 | T27: 0 | U27: 28 | V27: 8785.127525
B28: NUMMEAL index | C28: Average | D28: # meal / day | G28: 29 | H28: 4997.066542 | I28: 4 | J28: 12 | K28: 3 | L28: 3 | M28: 4 | N28: 0.25 | O28: 1 | P28: 0 | Q28: 0 | R28: 6 | S28: 29 | T28: 0 | U28: 29 | V28: 0
B29: 0 | C29: 0 | D29: 0 | E29: Doesn't cook/Never cooks | G29: 30 | H29: 4125.232473 | I29: 8 | J29: 7 | K29: 4 | L29: 2 | M29: 8 | N29: 0.3 | O29: 2 | P29: 0 | Q29: 0 | R29: 6 | S29: 30 | T29: 0 | U29: 30 | V29: 0
B30: 1 | C30: 3 | D30: 3.373014246 | E30: Three or more times a day | G30: 31 | H30: 28137.35289 | I30: 4 | J30: 4 | K30: 4 | L30: 3 | M30: 4 | N30: 0.15 | O30: 1 | P30: 0 | Q30: 0 | R30: 1 | S30: 31 | T30: 0 | U30: 31 | V30: 0
B31: 2 | C31: 2 | D31: 1.534619288 | E31: two times a day | G31: 32 | H31: 25900.23796 | I31: 3 | J31: 7 | K31: 4 | L31: 3 | M31: 3 | N31: 0.15 | O31: 1 | P31: 1 | Q31: 0 | R31: 3 | S31: 32 | T31: 25900.23796 | U31: 32 | V31: 0
B32: 3 | C32: 1 | D32: 0.5003306079 | E32: Once a day | G32: 33 | H32: 28054.60112 | I32: 3 | J32: 11 | K32: 4 | L32: 2 | M32: 3 | N32: 0.3 | O32: 2 | P32: 0 | Q32: 0 | R32: 2 | S32: 33 | T32: 0 | U32: 33 | V32: 0
B33: 4 | C33: 0.5 | D33: 0.4480317624 | E33: A few times each week | G33: 34 | H33: 5146.697744 | I33: 2 | J33: 3 | K33: 4 | L33: 3 | M33: 2 | N33: 0.15 | O33: 1 | P33: 0 | Q33: 0 | R33: 4 | S33: 34 | T33: 0 | U33: 34 | V33: 0
B34: 5 | C34: 0.14 | D34: 0.1749929872 | E34: About once a week | G34: 35 | H34: 30307.03354 | I34: 2 | J34: 4 | K34: 2 | L34: 4 | M34: 2 | N34: 0.25 | O34: 0.5 | P34: 0 | Q34: 0 | R34: 4 | S34: 35 | T34: 0 | U34: 35 | V34: 0
B35: 6 | C35: 0.07 | D35: 0.007932269586 | E35: Less than once a week | G35: 36 | H35: 24788.53079 | I35: 11 | J35: 1 | K35: 3 | L35: 4 | M35: 9 | N35: 0.125 | O35: 0.5 | P35: 0 | Q35: 0 | R35: 3 | S35: 36 | T35: 0 | U35: 36 | V35: 0
B36: AMTMICRO index | D36: Usage | G36: 37 | H36: 30598.54152 | I36: 12 | J36: 6 | K36: 4 | L36: 2 | M36: 7 | N36: 0.3 | O36: 2 | P36: 0 | Q36: 0 | R36: 4 | S36: 37 | T36: 0 | U36: 37 | V36: 0
B37: 1 | C37: 1 | D37: 0.9720299157 | E37: Most or all | G37: 38 | H37: 26169.00026 | I37: 3 | J37: 12 | K37: 4 | L37: 3 | M37: 3 | N37: 0.15 | O37: 1 | P37: 0 | Q37: 0 | R37: 2 | S37: 38 | T37: 0 | U37: 38 | V37: 0
B38: 2 | C38: 0.5 | D38: 0.6341699277 | E38: About half | G38: 39 | H38: 24921.09689 | I38: 11 | J38: 4 | K38: 3 | L38: 3 | M38: 9 | N38: 0.25 | O38: 1 | P38: 0 | Q38: 0 | R38: 4 | S38: 39 | T38: 0 | U38: 39 | V38: 0
B39: 3 | C39: 0.25 | D39: 0.2308143249 | E39: Some or very little | G39: 40 | H39: 25955.15655 | I39: 11 | J39: 6 | K39: 3 | L39: 4 | M39: 9 | N39: 0.125 | O39: 0.5 | P39: 0 | Q39: 0 | R39: 2 | S39: 40 | T39: 0 | U39: 40 | V39: 0
B40: 4 | C40: 0.15 | D40: 0.2259447262 | E40: Used only for snacks, defrosting, or reheating food | G40: 41 | H40: 29873.99213 | I40: 5 | J40: 9 | K40: 4 | L40: 4 | M40: 5 | N40: 0.075 | O40: 0.5 | P40: 0 | Q40: 0 | R40: 2 | S40: 41 | T40: 0 | U40: 41 | V40: 0
B41: DIVISION & Large State | G41: 42 | H41: 22464.60603 | I41: 11 | J41: 5 | K41: 4 | L41: 6 | M41: 9 | N41: 0.0105 | O41: 0.07 | P41: 0 | Q41: 0 | R41: 2 | S41: 42 | T41: 0 | U41: 42 | V41: 0
B42: 1 | D42: New England Census Division | E42: =SUM(IF($I$6:$I$3840=B42, Nweight, 0))/SUM(Nweight) -> 0.04368305426 | G42: 43 | H42: 12080.64795 | I42: 1 | J42: 4 | K42: 4 | L42: 2 | M42: 1 | N42: 0.3 | O42: 2 | P42: 0 | Q42: 0 | R42: 4 | S42: 43 | T42: 0 | U42: 43 | V42: 0
B43: 2 | D43: Middle Atlantic Census Division | E43: =SUM(IF($I$6:$I$3840=B43, Nweight, 0))/SUM(Nweight) -> 0.07688542762 | G43: 45 | H43: 22659.89595 | I43: 2 | J43: 1 | K43: 1 | L43: 3 | M43: 2 | N43: 1 | O43: 1 | P43: 0 | Q43: 0 | R43: 5 | S43: 45 | T43: 0 | U43: 45 | V43: 0
B44: 3 | D44: East North Central Census Division | E44: =SUM(IF($I$6:$I$3840=B44, Nweight, 0))/SUM(Nweight) -> 0.1648986523 | G44: 46 | H44: 23793.77813 | I44: 11 | J44: 5 | K44: 3 | L44: 3 | M44: 9 | N44: 0.25 | O44: 1 | P44: 0 | Q44: 0 | R44: 1 | S44: 46 | T44: 0 | U44: 46 | V44: 0
B45: 4 | D45: West North Central Census Division | E45: =SUM(IF($I$6:$I$3840=B45, Nweight, 0))/SUM(Nweight) -> 0.07247079359 | G45: 47 | H45: 14540.78106 | I45: 1 | J45: 1 | K45: 3 | L45: 3 | M45: 1 | N45: 0.25 | O45: 1 | P45: 0 | Q45: 0 | R45: 2 | S45: 47 | T45: 0 | U45: 47 | V45: 0
B46: 5 | D46: South Atlantic Census Division | E46: =SUM(IF($I$6:$I$3840=B46, Nweight, 0))/SUM(Nweight) -> 0.1307961523 | G46: 48 | H46: 59391.03403 | I46: 10 | J46: 1 | K46: 4 | L46: 4 | M46: 2 | N46: 0.075 | O46: 0.5 | P46: 0 | Q46: 0 | R46: 1 | S46: 48 | T46: 0 | U46: 48 | V46: 0
B47: 6 | D47: East South Central Census Division | E47: =SUM(IF($I$6:$I$3840=B47, Nweight, 0))/SUM(Nweight) -> 0.05944841174 | G47: 49 | H47: 18135.31618 | I47: 6 | J47: 9 | K47: 4 | L47: 5 | M47: 6 | N47: 0.021 | O47: 0.14 | P47: 1 | Q47: 0 | R47: 2 | S47: 49 | T47: 18135.31618 | U47: 49 | V47: 0
B48: 7 | D48: West South Central Census Division | E48: =SUM(IF($I$6:$I$3840=B48, Nweight, 0))/SUM(Nweight) -> 0.03913586707 | G48: 50 | H48: 29467.61184 | I48: 4 | J48: 6 | K48: 4 | L48: 4 | M48: 4 | N48: 0.075 | O48: 0.5 | P48: 0 | Q48: 2 | R48: 2 | S48: 50 | T48: 0 | U48: 50 | V48: 29467.61184
B49: 8 | D49: Mountain Census Division | E49: =SUM(IF($I$6:$I$3840=B49, Nweight, 0))/SUM(Nweight) -> 0.07403321087 | G49: 51 | H49: 3908.186122 | I49: 8 | J49: 6 | K49: 2 | L49: 1 | M49: 8 | N49: 1.5 | O49: 3 | P49: 1 | Q49: 0 | R49: 4 | S49: 51 | T49: 3908.186122 | U49: 51 | V49: 0
B50: 9 | D50: Pacific Census Division | E50: =SUM(IF($I$6:$I$3840=B50, Nweight, 0))/SUM(Nweight) -> 0.04261284195 | G50: 56 | H50: 35902.14675 | I50: 4 | J50: 3 | K50: 1 | L50: 5 | M50: 4 | N50: 0.14 | O50: 0.14 | P50: 0 | Q50: 1 | R50: 1 | S50: 56 | T50: 0 | U50: 56 | V50: 35902.14675
B51: 10 | D51: New York State | E51: =SUM(IF($I$6:$I$3840=B51, Nweight, 0))/SUM(Nweight) -> 0.05986383772 | G51: 57 | H51: 27565.84223 | I51: 3 | J51: 9 | K51: 4 | L51: 3 | M51: 3 | N51: 0.15 | O51: 1 | P51: 0 | Q51: 0 | R51: 3 | S51: 57 | T51: 0 | U51: 57 | V51: 0
B52: 11 | D52: California | E52: =SUM(IF($I$6:$I$3840=B52, Nweight, 0))/SUM(Nweight) -> 0.1050859304 | G52: 58 | H52: 36130.37084 | I52: 3 | J52: 8 | K52: 4 | L52: 4 | M52: 3 | N52: 0.075 | O52: 0.5 | P52: 0 | Q52: 0 | R52: 2 | S52: 58 | T52: 0 | U52: 58 | V52: 0
B53: 12 | D53: Texas | E53: =SUM(IF($I$6:$I$3840=B53, Nweight, 0))/SUM(Nweight) -> 0.07012717276 | G53: 59 | H53: 26873.50248 | I53: 10 | J53: 3 | K53: 4 | L53: 3 | M53: 2 | N53: 0.15 | O53: 1 | P53: 0 | Q53: 3 | R53: 3 | S53: 59 | T53: 0 | U53: 59 | V53: 26873.50248
B54: 13 | D54: Florida | E54: =SUM(IF($I$6:$I$3840=B54, Nweight, 0))/SUM(Nweight) -> 0.06095864739 | G54: 60 | H54: 24906.70586 | I54: 3 | J54: 9 | K54: 4 | L54: 3 | M54: 3 | N54: 0.15 | O54: 1 | P54: 0 | Q54: 0 | R54: 2 | S54: 60 | T54: 0 | U54: 60 | V54: 0
G55: 61 | H55: 37175.92773 | I55: 5 | J55: 1 | K55: 4 | L55: 2 | M55: 5 | N55: 0.3 | O55: 2 | P55: 0 | Q55: 1 | R55: 1 | S55: 61 | T55: 0 | U55: 61 | V55: 37175.92773
G56: 62 | H56: 13124.30326 | I56: 1 | J56: 5 | K56: 4 | L56: 3 | M56: 1 | N56: 0.15 | O56: 1 | P56: 0 | Q56: 0 | R56: 2 | S56: 62 | T56: 0 | U56: 62 | V56: 0
G57: 63 | H57: 29961.70747 | I57: 5 | J57: 3 | K57: 2 | L57: 1 | M57: 5 | N57: 1.5 | O57: 3 | P57: 0 | Q57: 1 | R57: 2 | S57: 63 | T57: 0 | U57: 63 | V57: 0
G58: 64 | H58: 29556.5138 | I58: 10 | J58: 1 | K58: 4 | L58: 2 | M58: 2 | N58: 0.3 | O58: 2 | P58: 0 | Q58: 0 | R58: 3 | S58: 64 | T58: 0 | U58: 64 | V58: 0
G59: 65 | H59: 27601.00991 | I59: 6 | J59: 6 | K59: 3 | L59: 5 | M59: 6 | N59: 0.035 | O59: 0.14 | P59: 0 | Q59: 0 | R59: 3 | S59: 65 | T59: 0 | U59: 65 | V59: 0
G60: 66 | H60: 19360.17346 | I60: 1 | J60: 4 | K60: 1 | L60: 3 | M60: 1 | N60: 1 | O60: 1 | P60: 0 | Q60: 0 | R60: 1 | S60: 66 | T60: 0 | U60: 66 | V60: 0
G61: 68 | H61: 5446.642853 | I61: 13 | J61: 7 | K61: 4 | L61: 2 | M61: 5 | N61: 0.3 | O61: 2 | P61: 0 | Q61: 0 | R61: 6 | S61: 68 | T61: 0 | U61: 68 | V61: 0
G62: 69 | H62: 20318.86991 | I62: 2 | J62: 4 | K62: 4 | L62: 1 | M62: 2 | N62: 0.45 | O62: 3 | P62: 1 | Q62: 0 | R62: 6 | S62: 69 | T62: 20318.86991 | U62: 69 | V62: 0
G63: 71 | H63: 30402.68479 | I63: 9 | J63: 8 | K63: 3 | L63: 2 | M63: 9 | N63: 0.5 | O63: 2 | P63: 0 | Q63: 1 | R63: 1 | S63: 71 | T63: 0 | U63: 71 | V63: 30402.68479
G64: 72 | H64: 27556.40042 | I64: 8 | J64: 6 | K64: 2 | L64: 4 | M64: 8 | N64: 0.25 | O64: 0.5 | P64: 0 | Q64: 0 | R64: 1 | S64: 72 | T64: 0 | U64: 72 | V64: 0
G65: 73 | H65: 30199.03548 | I65: 2 | J65: 3 | K65: 4 | L65: 4 | M65: 2 | N65: 0.075 | O65: 0.5 | P65: 0 | Q65: 0 | R65: 5 | S65: 73 | T65: 0 | U65: 73 | V65: 0
G66: 74 | H66: 15840.73643 | I66: 1 | J66: 6 | K66: 4 | L66: 2 | M66: 1 | N66: 0.3 | O66: 2 | P66: 0 | Q66: 1 | R66: 1 | S66: 74 | T66: 0 | U66: 74 | V66: 15840.73643
G67: 75 | H67: 36233.89929 | I67: 13 | J67: 6 | K67: 2 | L67: 3 | M67: 5 | N67: 0.5 | O67: 1 | P67: 0 | Q67: 0 | R67: 4 | S67: 75 | T67: 0 | U67: 75 | V67: 0
G68: 76 | H68: 7299.990472 | I68: 3 | J68: 1 | K68: 4 | L68: 2 | M68: 3 | N68: 0.3 | O68: 2 | P68: 0 | Q68: 1 | R68: 2 | S68: 76 | T68: 0 | U68: 76 | V68: 0
G69: 77 | H69: 4493.904744 | I69: 1 | J69: 2 | K69: 4 | L69: 3 | M69: 1 | N69: 0.15 | O69: 1 | P69: 0 | Q69: 1 | R69: 1 | S69: 77 | T69: 0 | U69: 77 | V69: 4493.904744
G70: 78 | H70: 40131.30798 | I70: 13 | J70: 7 | K70: 4 | L70: 4 | M70: 5 | N70: =INDEX(NUMMEAL_AVG,L70+1) * INDEX(AMTMICRO_AVG,K70) -> 0.075 | O70: =INDEX(NUMMEAL_AVG,L70+1) -> 0.5 | P70: 0 | Q70: 0 | R70: 4 | S70: 78 | T70: 0 | U70: 78 | V70: 0
G71: 79 | H71: 50112.63471 | I71: 5 | J71: 1 | K71: 4 | L71: 4 | M71: 5 | N71: 0.075 | O71: 0.5 | P71: 0 | Q71: 0 | R71: 1 | S71: 79 | T71: =IF(P71=1, H71,0) -> 0 | U71: 79 | V71: =IF(R71=Q71, H71, 0) -> 0
G72: 80 | H72: 28629.22171 | I72: 12 | J72: 9 | K72: 4 | L72: 3 | M72: 7 | N72: 0.15 | O72: 1 | P72: 0 | Q72: 0 | R72: 4 | S72: 80 | T72: 0 | U72: 80 | V72: 0
G73: 81 | H73: 4082.974968 | I73: 1 | J73: 4 | K73: 4 | L73: 3 | M73: 1 | N73: 0.15 | O73: 1 | P73: 0 | Q73: 0 | R73: 3 | S73: 81 | T73: 0 | U73: 81 | V73: 0
G74: 83 | H74: 31637.2837 | I74: 3 | J74: 6 | K74: 4 | L74: 3 | M74: 3 | N74: 0.15 | O74: 1 | P74: 0 | Q74: 1 | R74: 1 | S74: 83 | T74: 0 | U74: 83 | V74: 31637.2837
G75: 84 | H75: 22333.56085 | I75: 9 | J75: 5 | K75: 4 | L75: 3 | M75: 9 | N75: 0.15 | O75: 1 | P75: 0 | Q75: 0 | R75: 3 | S75: 84 | T75: 0 | U75: 84 | V75: 0
G76: 85 | H76: 41387.87769 | I76: 3 | J76: 5 | K76: 1 | L76: 2 | M76: 3 | N76: 2 | O76: 2 | P76: 1 | Q76: 0 | R76: 1 | S76: 85 | T76: 41387.87769 | U76: 85 | V76: 0
G77: 86 | H77: 12080.64795 | I77: 1 | J77: 1 | K77: 4 | L77: 4 | M77: 1 | N77: 0.075 | O77: 0.5 | P77: 0 | Q77: 0 | R77: 3 | S77: 86 | T77: 0 | U77: 86 | V77: 0
G78: 88 | H78: 28481.16939 | I78: 3 | J78: 4 | K78: 4 | L78: 2 | M78: 3 | N78: 0.3 | O78: 2 | P78: 0 | Q78: 0 | R78: 2 | S78: 88 | T78: 0 | U78: 88 | V78: 0
G79: 89 | H79: 28134.24208 | I79: 3 | J79: 6 | K79: 4 | L79: 4 | M79: 3 | N79: 0.075 | O79: 0.5 | P79: 0 | Q79: 0 | R79: 2 | S79: 89 | T79: 0 | U79: 89 | V79: 0
G80: 90 | H80: 21699.00013 | I80: 11 | J80: 5 | K80: 4 | L80: 4 | M80: 9 | N80: 0.075 | O80: 0.5 | P80: 0 | Q80: 0 | R80: 2 | S80: 90 | T80: 0 | U80: 90 | V80: 0
G81: 91 | H81: 3908.186122 | I81: 8 | J81: 5 | K81: 3 | L81: 2 | M81: 8 | N81: 0.5 | O81: 2 | P81: 0 | Q81: 0 | R81: 2 | S81: 91 | T81: 0 | U81: 91 | V81: 0
G82: 93 | H82: 31305.7736 | I82: 3 | J82: 7 | K82: 3 | L82: 3 | M82: 3 | N82: 0.25 | O82: 1 | P82: 0 | Q82: 0 | R82: 3 | S82: 93 | T82: 0 | U82: 93 | V82: 0
G83: 94 | H83: 27969.97637 | I83: 5 | J83: 5 | K83: 3 | L83: 3 | M83: 5 | N83: 0.25 | O83: 1 | P83: 1 | Q83: 0 | R83: 2 | S83: 94 | T83: 27969.97637 | U83: 94 | V83: 0
G84: 95 | H84: 32365.80661 | I84: 5 | J84: 5 | K84: 1 | L84: 3 | M84: 5 | N84: 1 | O84: 1 | P84: 0 | Q84: 0 | R84: 1 | S84: 95 | T84: 0 | U84: 95 | V84: 0
G85: 96 | H85: 4762.185145 | I85: 5 | J85: 5 | K85: 2 | L85: 3 | M85: 5 | N85: 0.5 | O85: 1 | P85: 1 | Q85: 2 | R85: 2 | S85: 96 | T85: 4762.185145 | U85: 96 | V85: 4762.185145
G86: 97 | H86: 25500.61351 | I86: 12 | J86: 12 | K86: 4 | L86: 3 | M86: 7 | N86: 0.15 | O86: 1 | P86: 0 | Q86: 0 | R86: 2 | S86: 97 | T86: 0 | U86: 97 | V86: 0
G87: 98 | H87: 24273.85086 | I87: 11 | J87: 4 | K87: 4 | L87: 2 | M87: 9 | N87: 0.3 | O87: 2 | P87: 0 | Q87: 1 | R87: 4 | S87: 98 | T87: 0 | U87: 98 | V87: 0
G88: 99 | H88: 37510.99101 | I88: 2 | J88: 2 | K88: 4 | L88: 5 | M88: 2 | N88: 0.021 | O88: 0.14 | P88: 1 | Q88: 2 | R88: 3 | S88: 99 | T88: 37510.99101 | U88: 99 | V88: 0
G89: 100 | H89: 26330.60119 | I89: 4 | J89: 9 | K89: 4 | L89: 2 | M89: 4 | N89: 0.3 | O89: 2 | P89: 0 | Q89: 0 | R89: 4 | S89: 100 | T89: 0 | U89: 100 | V89: 0
G90: 101 | H90: 18258.83621 | I90: 6 | J90: 3 | K90: 4 | L90: 3 | M90: 6 | N90: 0.15 | O90: 1 | P90: 0 | Q90: 0 | R90: 3 | S90: 101 | T90: 0 | U90: 101 | V90: 0
G91: 102 | H91: 34098.65895 | I91: 10 | J91: 11 | K91: 4 | L91: 3 | M91: 2 | N91: 0.15 | O91: 1 | P91: 0 | Q91: 0 | R91: 4 | S91: 102 | T91: 0 | U91: 102 | V91: 0
G92: 103 | H92: 20428.68253 | I92: 6 | J92: 9 | K92: 4 | L92: 3 | M92: 6 | N92: 0.15 | O92: 1 | P92: 0 | Q92: 0 | R92: 4 | S92: 103 | T92: 0 | U92: 103 | V92: 0
G93: 104 | H93: 30035.59845 | I93: 11 | J93: 2 | K93: 2 | L93: 6 | M93: 9 | N93: 0.035 | O93: 0.07 | P93: 0 | Q93: 1 | R93: 1 | S93: 104 | T93: 0 | U93: 104 | V93: 30035.59845
G94: 105 | H94: 25500.61351 | I94: 12 | J94: 4 | K94: 4 | L94: 1 | M94: 7 | N94: 0.45 | O94: 3 | P94: 0 | Q94: 1 | R94: 6 | S94: 105 | T94: 0 | U94: 105 | V94: 0
G95: 106 | H95: 30681.48053 | I95: 5 | J95: 4 | K95: 3 | L95: 4 | M95: 5 | N95: 0.125 | O95: 0.5 | P95: 0 | Q95: 0 | R95: 3 | S95: 106 | T95: 0 | U95: 106 | V95: 0
G96: 107 | H96: 32651.23885 | I96: 4 | J96: 7 | K96: 2 | L96: 3 | M96: 4 | N96: 0.5 | O96: 1 | P96: 0 | Q96: 0 | R96: 1 | S96: 107 | T96: 0 | U96: 107 | V96: 0
G97: 108 | H97: 22696.53218 | I97: 11 | J97: 8 | K97: 3 | L97: 3 | M97: 9 | N97: 0.25 | O97: 1 | P97: 0 | Q97: 0 | R97: 2 | S97: 108 | T97: 0 | U97: 108 | V97: 0
G98: 110 | H98: 24610.64816 | I98: 4 | J98: 2 | K98: 3 | L98: 2 | M98: 4 | N98: 0.5 | O98: 2 | P98: 1 | Q98: 0 | R98: 6 | S98: 110 | T98: 24610.64816 | U98: 110 | V98: 0
G99: 111 | H99: 18502.01249 | I99: 6 | J99: 9 | K99: 2 | L99: 4 | M99: 6 | N99: 0.25 | O99: 0.5 | P99: 0 | Q99: 0 | R99: 2 | S99: 111 | T99: 0 | U99: 111 | V99: 0
G100: 113 | H100: 8065.420255 | I100: 3 | J100: 1 | K100: 2 | L100: 4 | M100: 3 | N100: 0.25 | O100: 0.5 | P100: 1 | Q100: 1 | R100: 1 | S100: 113 | T100: 8065.420255 | U100: 113 | V100: 8065.420255
G101: 114 | H101: 14540.78106 | I101: 1 | J101: 1 | K101: 2 | L101: 1 | M101: 1 | N101: 1.5 | O101: 3 | P101: 0 | Q101: 0 | R101: 5 | S101: 114 | T101: 0 | U101: 114 | V101: 0
G102: 115 | H102: 25636.09183 | I102: 4 | J102: 5 | K102: 1 | L102: 4 | M102: 4 | N102: 0.5 | O102: 0.5 | P102: 0 | Q102: 0 | R102: 2 | S102: 115 | T102: 0 | U102: 115 | V102: 0
G103: 116 | H103: 15573.22789 | I103: 1 | J103: 1 | K103: 4 | L103: 3 | M103: 1 | N103: 0.15 | O103: 1 | P103: 0 | Q103: 1 | R103: 1 | S103: 116 | T103: 0 | U103: 116 | V103: 15573.22789
G104: 117 | H104: 30402.68479 | I104: 9 | J104: 5 | K104: 1 | L104: 3 | M104: 9 | N104: 1 | O104: 1 | P104: 1 | Q104: 1 | R104: 1 | S104: 117 | T104: 30402.68479 | U104: 117 | V104: 30402.68479
G105: 118 | H105: 20763.47685 | I105: 8 | J105: 7 | K105: 4 | L105: 3 | M105: 8 | N105: 0.15 | O105: 1 | P105: 0 | Q105: 0 | R105: 2 | S105: 118 | T105: 0 | U105: 118 | V105: 0
G106: 119 | H106: 30307.03354 | I106: 2 | J106: 9 | K106: 2 | L106: 3 | M106: 2 | N106: 0.5 | O106: 1 | P106: 0 | Q106: 0 | R106: 3 | S106: 119 | T106: 0 | U106: 119 | V106: 0
G107: 120 | H107: 29678.90035 | I107: 12 | J107: 4 | K107: 2 | L107: 2 | M107: 7 | N107: 1 | O107: 2 | P107: 1 | Q107: 0 | R107: 2 | S107: 120 | T107: 29678.90035 | U107: 120 | V107: 0
G108: 121 | H108: 30532.08361 | I108: 4 | J108: 7 | K108: 4 | L108: 3 | M108: 4 | N108: 0.15 | O108: 1 | P108: 0 | Q108: 0 | R108: 1 | S108: 121 | T108: 0 | U108: 121 | V108: 0
G109: 122 | H109: 28333.53711 | I109: 3 | J109: 1 | K109: 3 | L109: 3 | M109: 3 | N109: 0.25 | O109: 1 | P109: 0 | Q109: 0 | R109: 2 | S109: 122 | T109: 0 | U109: 122 | V109: 0
G110: 123 | H110: 5606.182034 | I110: 9 | J110: 1 | K110: 3 | L110: 2 | M110: 9 | N110: 0.5 | O110: 2 | P110: 1 | Q110: 1 | R110: 2 | S110: 123 | T110: 5606.182034 | U110: 123 | V110: 0
G111: 124 | H111: 13304.26841 | I111: 1 | J111: 3 | K111: 4 | L111: 3 | M111: 1 | N111: 0.15 | O111: 1 | P111: 0 | Q111: 2 | R111: 2 | S111: 124 | T111: 0 | U111: 124 | V111: 13304.26841
G112: 125 | H112: 37854.52327 | I112: 3 | J112: 2 | K112: 4 | L112: 2 | M112: 3 | N112: 0.3 | O112: 2 | P112: 0 | Q112: 2 | R112: 2 | S112: 125 | T112: 0 | U112: 125 | V112: 37854.52327
G113: 126 | H113: 24273.85086 | I113: 11 | J113: 2 | K113: 4 | L113: 4 | M113: 9 | N113: 0.075 | O113: 0.5 | P113: 1 | Q113: 0 | R113: 6 | S113: 126 | T113: 24273.85086 | U113: 126 | V113: 0
G114: 127 | H114: 42408.43905 | I114: 10 | J114: 4 | K114: 4 | L114: 3 | M114: 2 | N114: 0.15 | O114: 1 | P114: 1 | Q114: 0 | R114: 8 | S114: 127 | T114: 42408.43905 | U114: 127 | V114: 0
G115: 128 | H115: 36752.87441 | I115: 13 | J115: 3 | K115: 4 | L115: 1 | M115: 5 | N115: 0.45 | O115: 3 | P115: 0 | Q115: 1 | R115: 6 | S115: 128 | T115: 0 | U115: 128 | V115: 0
G116: 130 | H116: 3860.621 | I116: 6 | J116: 6 | K116: 2 | L116: 2 | M116: 6 | N116: 1 | O116: 2 | P116: 1 | Q116: 1 | R116: 1 | S116: 130 | T116: 3860.621 | U116: 130 | V116: 3860.621
G117: 131 | H117: 6144.355841 | I117: 11 | J117: 5 | K117: 4 | L117: 5 | M117: 9 | N117: 0.021 | O117: 0.14 | P117: 0 | Q117: 1 | R117: 2 | S117: 131 | T117: 0 | U117: 131 | V117: 0
G118: 133 | H118: 13303.09447 | I118: 1 | J118: 9 | K118: 3 | L118: 3 | M118: 1 | N118: 0.25 | O118: 1 | P118: 0 | Q118: 0 | R118: 3 | S118: 133 | T118: 0 | U118: 133 | V118: 0
G119: 134 | H119: 28936.32153 | I119: 11 | J119: 3 | K119: 2 | L119: 6 | M119: 9 | N119: 0.035 | O119: 0.07 | P119: 0 | Q119: 0 | R119: 1 | S119: 134 | T119: 0 | U119: 134 | V119: 0
G120: 135 | H120: 31646.77098 | I120: 2 | J120: 9 | K120: 4 | L120: 4 | M120: 2 | N120: 0.075 | O120: 0.5 | P120: 0 | Q120: 0 | R120: 5 | S120: 135 | T120: 0 | U120: 135 | V120: 0
G121: 136 | H121: 22818.00097 | I121: 9 | J121: 7 | K121: 3 | L121: 3 | M121: 9 | N121: 0.25 | O121: 1 | P121: 0 | Q121: 0 | R121: 2 | S121: 136 | T121: 0 | U121: 136 | V121: 0
G122: 137 | H122: 29248.47633 | I122: 5 | J122: 9 | K122: 3 | L122: 4 | M122: 5 | N122: 0.125 | O122: 0.5 | P122: 0 | Q122: 2 | R122: 2 | S122: 137 | T122: 0 | U122: 137 | V122: 29248.47633
G123: 138 | H123: 25057.16793 | I123: 7 | J123: 4 | K123: 4 | L123: 3 | M123: 7 | N123: 0.15 | O123: 1 | P123: 0 | Q123: 0 | R123: 6 | S123: 138 | T123: 0 | U123: 138 | V123: 0
G124: 139 | H124: 29881.89115 | I124: 5 | J124: 5 | K124: 4 | L124: 2 | M124: 5 | N124: 0.3 | O124: 2 | P124: 0 | Q124: 0 | R124: 4 | S124: 139 | T124: 0 | U124: 139 | V124: 0
G125: 140 | H125: 28107.32949 | I125: 2 | J125: 5 | K125: 2 | L125: 4 | M125: 2 | N125: 0.25 | O125: 0.5 | P125: 0 | Q125: 2 | R125: 2 | S125: 140 | T125: 0 | U125: 140 | V125: 28107.32949
G126: 141 | H126: 25355.70657 | I126: 2 | J126: 2 | K126: 4 | L126: 4 | M126: 2 | N126: 0.075 | O126: 0.5 | P126: 1 | Q126: 1 | R126: 2 | S126: 141 | T126: 25355.70657 | U126: 141 | V126: 0
G127: 142 | H127: 22054.87955 | I127: 8 | J127: 4 | K127: 4 | L127: 2 | M127: 8 | N127: 0.3 | O127: 2 | P127: 0 | Q127: 0 | R127: 3 | S127: 142 | T127: 0 | U127: 142 | V127: 0
G128: 143 | H128: 26340.58306 | I128: 2 | J128: 1 | K128: 4 | L128: 3 | M128: 2 | N128: 0.15 | O128: 1 | P128: 1 | Q128: 0 | R128: 4 | S128: 143 | T128: 26340.58306 | U128: 143 | V128: 0
G129: 144 | H129: 24921.09689 | I129: 11 | J129: 3 | K129: 2 | L129: 4 | M129: 9 | N129: 0.25 | O129: 0.5 | P129: 0 | Q129: 0 | R129: 4 | S129: 144 | T129: 0 | U129: 144 | V129: 0
G130: 145 | H130: 43872.59316 | I130: 3 | J130: 1 | K130: 3 | L130: 3 | M130: 3 | N130: 0.25 | O130: 1 | P130: 0 | Q130: 0 | R130: 4 | S130: 145 | T130: 0 | U130: 145 | V130: 0
G131: 146 | H131: 24610.64816 | I131: 4 | J131: 3 | K131: 2 | L131: 3 | M131: 4 | N131: 0.5 | O131: 1 | P131: 0 | Q131: 2 | R131: 2 | S131: 146 | T131: 0 | U131: 146 | V131: 24610.64816
G132: 147 | H132: 4925.559862 | I132: 6 | J132: 1 | K132: 3 | L132: 3 | M132: 6 | N132: 0.25 | O132: 1 | P132: 1 | Q132: 0 | R132: 1 | S132: 147 | T132: 4925.559862 | U132: 147 | V132: 0
G133: 151 | H133: 4560.390542 | I133: 2 | J133: 2 | K133: 1 | L133: 2 | M133: 2 | N133: 2 | O133: 2 | P133: 0 | Q133: 1 | R133: 3 | S133: 151 | T133: 0 | U133: 151 | V133: 0
G134: 153 | H134: 31558.09426 | I134: 5 | J134: 1 | K134: 3 | L134: 4 | M134: 5 | N134: =INDEX(NUMMEAL_AVG,L134+1) * INDEX(AMTMICRO_AVG,K134) -> 0.125 | O134: =INDEX(NUMMEAL_AVG,L134+1) -> 0.5 | P134: 0 | Q134: 0 | R134: 2 | S134: 153 | T134: 0 | U134: 153 | V134: 0
G135: 155 | H135: 50300.29239 | I135: 13 | J135: 9 | K135: 4 | L135: 3 | M135: 5 | N135: 0.15 | O135: 1 | P135: 0 | Q135: 0 | R135: 1 | S135: 155 | T135: =IF(P135=1, H135,0) -> 0 | U135: 155 | V135: =IF(R135=Q135, H135, 0) -> 0
G136: 156 | H136: 36448.80267 | I136: 9 | J136: 9 | K136: 2 | L136: 4 | M136: 9 | N136: 0.25 | O136: 0.5 | P136: 0 | Q136: 0 | R136: 1 | S136: 156 | T136: 0 | U136: 156 | V136: 0
G137: 157 | H137: 19968.53869 | I137: 11 | J137: 3 | K137: 4 | L137: 5 | M137: 9 | N137: 0.021 | O137: 0.14 | P137: 0 | Q137: 0 | R137: 2 | S137: 157 | T137: 0 | U137: 157 | V137: 0
G138: 158 | H138: 31646.77098 | I138: 2 | J138: 6 | K138: 4 | L138: 4 | M138: 2 | N138: 0.075 | O138: 0.5 | P138: 0 | Q138: 0 | R138: 2 | S138: 158 | T138: 0 | U138: 158 | V138: 0
G139: 159 | H139: 22431.16131 | I139: 6 | J139: 8 | K139: 1 | L139: 6 | M139: 6 | N139: 0.07 | O139: 0.07 | P139: 0 | Q139: 0 | R139: 2 | S139: 159 | T139: 0 | U139: 159 | V139: 0
G140: 160 | H140: 42494.2712 | I140: 3 | J140: 2 | K140: 4 | L140: 2 | M140: 3 | N140: 0.3 | O140: 2 | P140: 0 | Q140: 1 | R140: 1 | S140: 160 | T140: 0 | U140: 160 | V140: 42494.2712
G141: 161 | H141: 33714.49297 | I141: 5 | J141: 1 | K141: 4 | L141: 4 | M141: 5 | N141: 0.075 | O141: 0.5 | P141: 0 | Q141: 1 | R141: 1 | S141: 161 | T141: 0 | U141: 161 | V141: 33714.49297
G142: 162 | H142: 21770.72697 | I142: 9 | J142: 6 | K142: 1 | L142: 2 | M142: 9 | N142: 2 | O142: 2 | P142: 1 | Q142: 0 | R142: 2 | S142: 162 | T142: 21770.72697 | U142: 162 | V142: 0
G143: 163 | H143: 9680.133628 | I143: 3 | J143: 4 | K143: 1 | L143: 3 | M143: 3 | N143: 1 | O143: 1 | P143: 1 | Q143: 0 | R143: 1 | S143: 163 | T143: 9680.133628 | U143: 163 | V143: 0
G144: 165 | H144: 6656.431988 | I144: 3 | J144: 5 | K144: 2 | L144: 4 | M144: 3 | N144: 0.25 | O144: 0.5 | P144: 0 | Q144: 0 | R144: 4 | S144: 165 | T144: 0 | U144: 165 | V144: 0
G145: 166 | H145: 25292.66418 | I145: 8 | J145: 5 | K145: 3 | L145: 3 | M145: 8 | N145: 0.25 | O145: 1 | P145: 0 | Q145: 1 | R145: 5 | S145: 166 | T145: 0 | U145: 166 | V145: 0
G146: 167 | H146: 27504.07858 | I146: 5 | J146: 9 | K146: 3 | L146: 4 | M146: 5 | N146: 0.125 | O146: 0.5 | P146: 0 | Q146: 0 | R146: 4 | S146: 167 | T146: 0 | U146: 167 | V146: 0
G147: 168 | H147: 36752.87441 | I147: 13 | J147: 5 | K147: 4 | L147: 3 | M147: 5 | N147: 0.15 | O147: 1 | P147: 0 | Q147: 0 | R147: 4 | S147: 168 | T147: 0 | U147: 168 | V147: 0
G148: 169 | H148: 6998.157811 | I148: 4 | J148: 3 | K148: 3 | L148: 3 | M148: 4 | N148: 0.25 | O148: 1 | P148: 0 | Q148: 0 | R148: 1 | S148: 169 | T148: 0 | U148: 169 | V148: 0
G149: 170 | H149: 20260.24292 | I149: 6 | J149: 9 | K149: 3 | L149: 1 | M149: 6 | N149: 0.75 | O149: 3 | P149: 0 | Q149: 0 | R149: 2 | S149: 170 | T149: 0 | U149: 170 | V149: 0
G150: 171 | H150: 47510.52568 | I150: 8 | J150: 2 | K150: 4 | L150: 2 | M150: 8 | N150: 0.3 | O150: 2 | P150: 0 | Q150: 0 | R150: 2 | S150: 171 | T150: 0 | U150: 171 | V150: 0
G151: 172 | H151: 21304.91041 | I151: 8 | J151: 8 | K151: 4 | L151: 3 | M151: 8 | N151: 0.15 | O151: 1 | P151: 0 | Q151: 0 | R151: 2 | S151: 172 | T151: 0 | U151: 172 | V151: 0
G152: 173 | H152: 19849.29541 | I152: 8 | J152: 8 | K152: 3 | L152: 1 | M152: 8 | N152: 0.75 | O152: 3 | P152: 0 | Q152: 0 | R152: 3 | S152: 173 | T152: 0 | U152: 173 | V152: 0
G153: 174 | H153: 11185.78514 | I153: 1 | J153: 10 | K153: 3 | L153: 2 | M153: 1 | N153: 0.5 | O153: 2 | P153: 0 | Q153: 0 | R153: 4 | S153: 174 | T153: 0 | U153: 174 | V153: 0
G154: 175 | H154: 46640.72029 | I154: 5 | J154: 5 | K154: 2 | L154: 2 | M154: 5 | N154: 1 | O154: 2 | P154: 0 | Q154: 0 | R154: 1 | S154: 175 | T154: 0 | U154: 175 | V154: 0
G155: 176 | H155: 22977.31132 | I155: 6 | J155: 7 | K155: 4 | L155: 1 | M155: 6 | N155: 0.45 | O155: 3 | P155: 0 | Q155: 1 | R155: 3 | S155: 176 | T155: 0 | U155: 176 | V155: 0
G156: 177 | H156: 30280.66002 | I156: 3 | J156: 2 | K156: 4 | L156: 3 | M156: 3 | N156: 0.15 | O156: 1 | P156: 0 | Q156: 0 | R156: 3 | S156: 177 | T156: 0 | U156: 177 | V156: 0
G157: 178 | H157: 5718.015344 | I157: 1 | J157: 1 | K157: 3 | L157: 3 | M157: 1 | N157: 0.25 | O157: 1 | P157: 0 | Q157: 0 | R157: 1 | S157: 178 | T157: 0 | U157: 178 | V157: 0
G158: 179 | H158: 38121.12253 | I158: 10 | J158: 4 | K158: 4 | L158: 2 | M158: 2 | N158: 0.3 | O158: 2 | P158: 0 | Q158: 1 | R158: 1 | S158: 179 | T158: 0 | U158: 179 | V158: 38121.12253
G159: 180 | H159: 24298.78799 | I159: 8 | J159: 9 | K159: 2 | L159: 3 | M159: 8 | N159: 0.5 | O159: 1 | P159: 0 | Q159: 0 | R159: 1 | S159: 180 | T159: 0 | U159: 180 | V159: 0
G160: 181 | H160: 12484.78696 | I160: 1 | J160: 1 | K160: 4 | L160: 3 | M160: 1 | N160: 0.15 | O160: 1 | P160: 0 | Q160: 0 | R160: 3 | S160: 181 | T160: 0 | U160: 181 | V160: 0
G161: 182 | H161: 25955.15655 | I161: 11 | J161: 10 | K161: 4 | L161: 2 | M161: 9 | N161: 0.3 | O161: 2 | P161: 0 | Q161: 2 | R161: 2 | S161: 182 | T161: 0 | U161: 182 | V161: 25955.15655
G162: 183 | H162: 7951.976735 | I162: 3 | J162: 7 | K162: 4 | L162: 1 | M162: 3 | N162: 0.45 | O162: 3 | P162: 1 | Q162: 0 | R162: 1 | S162: 183 | T162: 7951.976735 | U162: 183 | V162: 0
G163: 184 | H163: 19117.75104 | I163: 6 | J163: 1 | K163: 4 | L163: 2 | M163: 6 | N163: 0.3 | O163: 2 | P163: 1 | Q163: 0 | R163: 2 | S163: 184 | T163: 19117.75104 | U163: 184 | V163: 0
G164: 185 | H164: 27167.25961 | I164: 3 | J164: 4 | K164: 4 | L164: 3 | M164: 3 | N164: 0.15 | O164: 1 | P164: 0 | Q164: 0 | R164: 3 | S164: 185 | T164: 0 | U164: 185 | V164: 0
G165: 186 | H165: 5236.525833 | I165: 10 | J165: 6 | K165: 4 | L165: 3 | M165: 2 | N165: 0.15 | O165: 1 | P165: 0 | Q165: 0 | R165: 7 | S165: 186 | T165: 0 | U165: 186 | V165: 0
G166: 187 | H166: 28107.32949 | I166: 2 | J166: 3 | K166: 4 | L166: 5 | M166: 2 | N166: 0.021 | O166: 0.14 | P166: 0 | Q166: 2 | R166: 2 | S166: 187 | T166: 0 | U166: 187 | V166: 28107.32949
G167: 188 | H167: 7032.626493 | I167: 3 | J167: 3 | K167: 1 | L167: 3 | M167: 3 | N167: 1 | O167: 1 | P167: 1 | Q167: 0 | R167: 4 | S167: 188 | T167: 7032.626493 | U167: 188 | V167: 0
G168: 189 | H168: 28252.94115 | I168: 12 | J168: 8 | K168: 3 | L168: 3 | M168: 7 | N168: 0.25 | O168: 1 | P168: 0 | Q168: 0 | R168: 6 | S168: 189 | T168: 0 | U168: 189 | V168: 0
G169: 190 | H169: 25504.18284 | I169: 3 | J169: 1 | K169: 3 | L169: 6 | M169: 3 | N169: 0.0175 | O169: 0.07 | P169: 0 | Q169: 0 | R169: 3 | S169: 190 | T169: 0 | U169: 190 | V169: 0
G170: 191 | H170: 28481.16939 | I170: 3 | J170: 4 | K170: 3 | L170: 4 | M170: 3 | N170: 0.125 | O170: 0.5 | P170: 0 | Q170: 0 | R170: 3 | S170: 191 | T170: 0 | U170: 191 | V170: 0
G171: 192 | H171: 20806.22382 | I171: 6 | J171: 3 | K171: 4 | L171: 1 | M171: 6 | N171: 0.45 | O171: 3 | P171: 0 | Q171: 0 | R171: 1 | S171: 192 | T171: 0 | U171: 192 | V171: 0
G172: 194 | H172: 44532.47298 | I172: 13 | J172: 4 | K172: 4 | L172: 1 | M172: 5 | N172: 0.45 | O172: 3 | P172: 1 | Q172: 0 | R172: 1 | S172: 194 | T172: 44532.47298 | U172: 194 | V172: 0
G173: 195 | H173: 4845.77138 | I173: 3 | J173: 6 | K173: 3 | L173: 2 | M173: 3 | N173: 0.5 | O173: 2 | P173: 0 | Q173: 0 | R173: 3 | S173: 195 | T173: 0 | U173: 195 | V173: 0
G174: 196 | H174: 4679.780079 | I174: 10 | J174: 1 | K174: 2 | L174: 4 | M174: 2 | N174: 0.25 | O174: 0.5 | P174: 1 | Q174: 0 | R174: 3 | S174: 196 | T174: 4679.780079 | U174: 196 | V174: 0
G175: 197 | H175: 23022.8644 | I175: 4 | J175: 1 | K175: 4 | L175: 3 | M175: 4 | N175: 0.15 | O175: 1 | P175: 0 | Q175: 0 | R175: 2 | S175: 197 | T175: 0 | U175: 197 | V175: 0
G176: 198 | H176: 36167.07201 | I176: 5 | J176: 3 | K176: 4 | L176: 2 | M176: 5 | N176: 0.3 | O176: 2 | P176: 1 | Q176: 1 | R176: 1 | S176: 198 | T176: 36167.07201 | U176: 198 | V176: 36167.07201
G177: 199 | H177: 19117.75104 | I177: 6 | J177: 1 | K177: 4 | L177: 3 | M177: 6 | N177: 0.15 | O177: 1 | P177: 0 | Q177: 0 | R177: 3 | S177: 199 | T177: 0 | U177: 199 | V177: 0
G178: 200 | H178: 35917.15347 | I178: 13 | J178: 3 | K178: 4 | L178: 3 | M178: 5 | N178: 0.15 | O178: 1 | P178: 1 | Q178: 0 | R178: 2 | S178: 200 | T178: 35917.15347 | U178: 200 | V178: 0
G179: 201 | H179: 20342.11239 | I179: 8 | J179: 5 | K179: 2 | L179: 2 | M179: 8 | N179: 1 | O179: 2 | P179: 0 | Q179: 0 | R179: 3 | S179: 201 | T179: 0 | U179: 201 | V179: 0
G180: 202 | H180: 26641.8656 | I180: 2 | J180: 5 | K180: 4 | L180: 3 | M180: 2 | N180: 0.15 | O180: 1 | P180: 0 | Q180: 0 | R180: 4 | S180: 202 | T180: 0 | U180: 202 | V180: 0
G181: 204 | H181: 7207.709306 | I181: 2 | J181: 2 | K181: 1 | L181: 4 | M181: 2 | N181: 0.5 | O181: 0.5 | P181: 1 | Q181: 0 | R181: 1 | S181: 204 | T181: 7207.709306 | U181: 204 | V181: 0
G182: 206 | H182: 34964.03733 | I182: 5 | J182: 3 | K182: 4 | L182: 2 | M182: 5 | N182: 0.3 | O182: 2 | P182: 0 | Q182: 2 | R182: 3 | S182: 206 | T182: 0 | U182: 206 | V182: 0
G183: 207 | H183: 24788.53079 | I183: 11 | J183: 3 | K183: 1 | L183: 2 | M183: 9 | N183: 2 | O183: 2 | P183: 0 | Q183: 0 | R183: 4 | S183: 207 | T183: 0 | U183: 207 | V183: 0
G184: 208 | H184: 29902.39565 | I184: 2 | J184: 6 | K184: 4 | L184: 4 | M184: 2 | N184: 0.075 | O184: 0.5 | P184: 0 | Q184: 0 | R184: 2 | S184: 208 | T184: 0 | U184: 208 | V184: 0
G185: 209 | H185: 22696.53218 | I185: 11 | J185: 3 | K185: 2 | L185: 2 | M185: 9 | N185: 1 | O185: 2 | P185: 0 | Q185: 1 | R185: 2 | S185: 209 | T185: 0 | U185: 209 | V185: 0
G186: 210 | H186: 38455.31159 | I186: 11 | J186: 7 | K186: 4 | L186: 4 | M186: 9 | N186: 0.075 | O186: 0.5 | P186: 0 | Q186: 0 | R186: 1 | S186: 210 | T186: 0 | U186: 210 | V186: 0
G187: 211 | H187: 32830.4591 | I187: 12 | J187: 6 | K187: 3 | L187: 3 | M187: 7 | N187: 0.25 | O187: 1 | P187: 0 | Q187: 0 | R187: 2 | S187: 211 | T187: 0 | U187: 211 | V187: 0
G188: 212 | H188: 5063.481354 | I188: 2 | J188: 3 | K188: 4 | L188: 5 | M188: 2 | N188: 0.021 | O188: 0.14 | P188: 0 | Q188: 0 | R188: 4 | S188: 212 | T188: 0 | U188: 212 | V188: 0
G189: 213 | H189: 30185.84401 | I189: 3 | J189: 1 | K189: 2 | L189: 4 | M189: 3 | N189: 0.25 | O189: 0.5 | P189: 0 | Q189: 0 | R189: 5 | S189: 213 | T189: 0 | U189: 213 | V189: 0
G190: 214 | H190: 35127.78104 | I190: 5 | J190: 7 | K190: 2 | L190: 3 | M190: 5 | N190: 0.5 | O190: 1 | P190: 0 | Q190: 0 | R190: 2 | S190: 214 | T190: 0 | U190: 214 | V190: 0
G191: 215 | H191: 24543.6 | I191: 12 | J191: 4 | K191: 2 | L191: 3 | M191: 7 | N191: 0.5 | O191: 1 | P191: 0 | Q191: 0 | R191: 3 | S191: 215 | T191: 0 | U191: 215 | V191: 0
G192: 216 | H192: 33310.82685 | I192: 5 | J192: 5 | K192: 4 | L192: 1 | M192: 5 | N192: 0.45 | O192: 3 | P192: 0 | Q192: 1 | R192: 2 | S192: 216 | T192: 0 | U192: 216 | V192: 0
G193: 217 | H193: 28295.27986 | I193: 3 | J193: 5 | K193: 4 | L193: 4 | M193: 3 | N193: 0.075 | O193: 0.5 | P193: 0 | Q193: 1 | R193: 1 | S193: 217 | T193: 0 | U193: 217 | V193: 28295.27986
G194: 218 | H194: 21744.40509 | I194: 8 | J194: 12 | K194: 4 | L194: 1 | M194: 8 | N194: 0.45 | O194: 3 | P194: 0 | Q194: 0 | R194: 4 | S194: 218 | T194: 0 | U194: 218 | V194: 0
G195: 219 | H195: 5310.149287 | I195: 5 | J195: 3 | K195: 4 | L195: 4 | M195: 5 | N195: 0.075 | O195: 0.5 | P195: 1 | Q195: 0 | R195: 1 | S195: 219 | T195: 5310.149287 | U195: 219 | V195: 0
G196: 220 | H196: 19712.45814 | I196: 8 | J196: 6 | K196: 4 | L196: 4 | M196: 8 | N196: 0.075 | O196: 0.5 | P196: 0 | Q196: 0 | R196: 3 | S196: 220 | T196: 0 | U196: 220 | V196: 0
G197: 221 | H197: 44319.82158 | I197: 2 | J197: 8 | K197: 4 | L197: 4 | M197: 2 | N197: 0.075 | O197: 0.5 | P197: 1 | Q197: 1 | R197: 1 | S197: 221 | T197: 44319.82158 | U197: 221 | V197: 44319.82158
G198: 222 | H198: 22831.14704 | I198: 3 | J198: 1 | K198: 3 | L198: 4 | M198: 3 | N198: =INDEX(NUMMEAL_AVG,L198+1) * INDEX(AMTMICRO_AVG,K198) -> 0.125 | O198: =INDEX(NUMMEAL_AVG,L198+1) -> 0.5 | P198: 0 | Q198: 0 | R198: 2 | S198: 222 | T198: 0 | U198: 222 | V198: 0
G199: 223 | H199: 29467.61184 | I199: 4 | J199: 2 | K199: 3 | L199: 3 | M199: 4 | N199: 0.25 | O199: 1 | P199: 0 | Q199: 0 | R199: 2 | S199: 223 | T199: =IF(P199=1, H199,0) -> 0 | U199: 223 | V199: =IF(R199=Q199, H199, 0) -> 0
G200: 225 | H200: 22845.65806 | I200: 9 | J200: 9 | K200: 4 | L200: 3 | M200: 9 | N200: 0.15 | O200: 1 | P200: 0 | Q200: 0 | R200: 3 | S200: 225 | T200: 0 | U200: 225 | V200: 0
... 3640 more rows

Sheet Base Case Eff Dist
B1: Base Case Eff Dist
E3: Market Share Efficiency Data
B4: Export Parameters | D4: Product Class 1 | E4: Microwave Oven - Only (CT and OTR), Microwave Combination Oven (CT)
B5: To LCC Summary: | E5: Level | G5: Standby | H5: 2005
B6: ="Base Case Efficiency for " &D4 -> Base Case Efficiency for Product Class 1 | C6: =H13 -> 1.5 | E6: 0 | F6: Baseline | G6: 4 | H6: 0.462
B7: Corresponding Eff. Level | C7: =OFFSET(E5, MATCH(BaseCaseEff, G6:G10, 0), 0) -> 2 | E7: 1 | F7: TSL1 | G7: 2 | H7: 0.346
B8: =" Base Case Efficiency for " &D15 -> Base Case Efficiency for Product Class 2 | C8: =H24 -> 4.5 | E8: 2 | F8: TSL2 | G8: 1.5 | H8: 0.192
B9: Corresponding Eff. Level | C9: =OFFSET(E16, MATCH(BaseCaseEff2, G17:G21, 0), 0) -> 0 | E9: 3 | F9: TSL3 | G9: 1 | H9: 0
E10: 4 | F10: TSL4 | G10: 0.02 | H10: 0
H11: =SUM(H6:H10) -> 1
H13: 1.5
E14: =+E3 -> Market Share Efficiency Data
D15: Product Class 2 | E15: Microwave Combination Oven (OTR)
E16: Level | G16: Standby | H16: 2005
E17: 0 | F17: Baseline | G17: 4.5 | H17: 1
E18: 1 | F18: TSL1 | G18: 3.7 | H18: 0
E19: 2 | F19: TSL2 | G19: 2.7 | H19: 0
E20: 3 | F20: TSL3 | G20: 2.2 | H20: 0
E21: 4 | F21: TSL4 | G21: 0.04 | H21: 0
H22: =SUM(H17:H21) -> 1
H24: 4.5

Sheet Equipment Cost
B1: Equipment Cost
B3: Export Parameters | E3: ='Base Case Eff Dist'!E4 -> Microwave Oven - Only (CT and OTR), Microwave Combination Oven (CT) | N3: Sales Tax by Divison and Large States
B4: To LCC Summary: | F4: Efficiency Level Source | G4: Standby Power | H4: Delta Mnfg Price from Base | I4: Retail | K4: Manufacturing Cost | L4: Incremental Cost | N4: 1 | O4: New England | P4: 0.05547249895
B5: Total Installed Price | E5: Level | I5: Price | N5: 2 | O5: Mid Atlantic | P5: 0.06624715782
B6: =+'Base Case Eff Dist'!D4 -> Product Class 1 | E6: 0 | F6: =INDEX(labelEffLvl,E6+1) -> Baseline | G6: ='Base Case Eff Dist'!G6 -> 4 | H6: =MfgMarkup*K6 -> 143.6419903 | I6: =H6*MarkupBaseline -> 222.7407685 | K6: =L6*IF(learning=1, pcorr, 1) -> 114.0015796 | L6: 120.3497068 | N6: 3 | O6: East North Central | P6: 0.06942491373
B7: Level | C7: (2010$) | E7: 1 | F7: =INDEX(labelEffLvl,E7+1) -> TSL1 | G7: ='Base Case Eff Dist'!G7 -> 2 | H7: =MfgMarkup*(K7-$K$6) -> 0.3193403941 | I7: =$I$6+(H7*MarkupIncr) -> 223.1403358 | K7: =($L$6+L7)*IF(learning=1, pcorr, 1) -> 114.2550244 | L7: 0.2675577157 | N7: 4 | O7: West North Central | P7: 0.06857891013
B8: 0 | C8: =I6 -> 222.7407685 | E8: 2 | F8: =INDEX(labelEffLvl,E8+1) -> TSL2 | G8: ='Base Case Eff Dist'!G8 -> 1.5 | H8: =MfgMarkup*(K8-$K$6) -> 0.7131935468 | I8: =$I$6+(H8*MarkupIncr) -> 223.6331356 | K8: =($L$6+L8)*IF(learning=1, pcorr, 1) -> 114.5676062 | L8: 0.597545565 | N8: 5 | O8: South Atlantic | P8: 0.06438273915
B9: =B8+1 -> 1 | C9: =I7 -> 223.1403358 | E9: 3 | F9: =INDEX(labelEffLvl,E9+1) -> TSL3 | G9: ='Base Case Eff Dist'!G9 -> 1 | H9: =MfgMarkup*(K9-$K$6) -> 1.564767931 | I9: =$I$6+(H9*MarkupIncr) -> 224.6986486 | K9: =($L$6+L9)*IF(learning=1, pcorr, 1) -> 115.2434589 | L9: 1.311032807 | N9: 6 | O9: East South Central | P9: 0.07904529543
B10: 2 | C10: 223.6331356 | E10: 4 | F10: =INDEX(labelEffLvl,E10+1) -> TSL4 | G10: ='Base Case Eff Dist'!G10 -> 0.02 | H10: =MfgMarkup*(K10-$K$6) -> 5.460720739 | I10: =$I$6+(H10*MarkupIncr) -> 229.5733705 | K10: =($L$6+L10)*IF(learning=1, pcorr, 1) -> 118.335485 | L10: 4.575236938 | N10: 7 | O10: West South Central | P10: 0.08419609261
B11: 3 | C11: 224.6986486 | N11: 8 | O11: Mountain | P11: 0.06499797337
B12: 4 | C12: 229.5733705 | E12: ='Base Case Eff Dist'!E15 -> Microwave Combination Oven (OTR) | N12: 9 | O12: Pacific | P12: 0.0521153389
B13: =+'Base Case Eff Dist'!D15 -> Product Class 2 | F13: Efficiency Level Source | G13: Standby Power | H13: Delta Mnfg Price from Base | I13: Retail | K13: Manufacturing Cost | L13: Incremental Cost | N13: 10 | O13: New York State | P13: 0.0845
B14: Level | C14: (2010$) | E14: Level | I14: Price | N14: 11 | O14: California | P14: 0.0915
B15: 0 | C15: =I15 -> 481.0238612 | E15: 0 | F15: =INDEX(labelEffLvl2,E15+1) -> Baseline | G15: =INDEX(_eff2, E15+1) -> 4.5 | H15: =MfgMarkup*K15 -> 310.204662 | I15: =H15*MarkupBaseline -> 481.0238612 | K15: =L15*IF(learning=1, pcorr, 1) -> 246.1941762 | L15: 259.9033893 | N15: 12 | O15: Texas | P15: 0.0805
B16: =B15+1 -> 1 | C16: =I16 -> 481.0238612 | E16: 1 | F16: =INDEX(labelEffLvl2,E16+1) -> TSL1 | G16: =INDEX(_eff2, E16+1) -> 3.7 | H16: =MfgMarkup*(K16-$K$15) -> 0 | I16: =$I$15+(H16*MarkupIncr) -> 481.0238612 | K16: =($L$15+L16)*IF(learning=1, pcorr, 1) -> 246.1941762 | N16: 13 | O16: Florida | P16: 0.067
B17: 2 | C17: 484.4448171 | E17: 2 | F17: =INDEX(labelEffLvl2,E17+1) -> TSL2 | G17: =INDEX(_eff2, E17+1) -> 2.7 | H17: =MfgMarkup*(K17-$K$15) -> 2.734080586 | I17: =$I$15+(H17*MarkupIncr) -> 484.4448171 | K17: =($L$15+L17)*IF(learning=1, pcorr, 1) -> 248.3640814 | L17: 2.290735434 | O17: U.S. Average | P17: =SUMPRODUCT(SalesTaxRate, region_weights) -> 0.07178602598
B18: 3 | C18: 495.1158134 | E18: 3 | F18: =INDEX(labelEffLvl2,E18+1) -> TSL3 | G18: =INDEX(_eff2, E18+1) -> 2.2 | H18: =MfgMarkup*(K18-$K$15) -> 11.26250509 | I18: =$I$15+(H18*MarkupIncr) -> 495.1158134 | K18: =($L$15+L18)*IF(learning=1, pcorr, 1) -> 255.1326723 | L18: 9.43623228
B19: 4 | C19: 488.7645907 | E19: 4 | F19: =INDEX(labelEffLvl2,E19+1) -> TSL4 | G19: =INDEX(_eff2, E19+1) -> 0.04 | H19: =MfgMarkup*(K19-$K$15) -> 6.186510197 | I19: =$I$15+(H19*MarkupIncr) -> 488.7645907 | K19: =($L$15+L19)*IF(learning=1, pcorr, 1) -> 251.1041049 | L19: 5.183335923 | N19: Markups
O20: Manufacturer Markup | Q20: 1.26
B21: Import Parameters
B22: From RECS Household: | P22: Baseline | Q22: Incremental
B23: Div & Lrg State | C23: =HH_Div -> 3 | O23: Retailer Markup | P23: 1.45 | Q23: 1.17
O24: Multiplier to include Sales Tax | P24: =INDEX(SalesTaxRate,C23) -> 0.06942491373 | Q24: =P24 -> 0.06942491373
B25: Price Trend Factor | O25: Total Markup incl. Sales Tax | P25: =P23 * (1+P24) -> 1.550666125 | Q25: =Q23 * (1+Q24) -> 1.251227149
B26: 2014 Cost Factor | C26: =1/D31 -> 0.9472526575
B28: Price Trend
B29: Year | C29: Data | D29: Rescaled
B30: 2010 | C30: 1 | D30: =C30/$C$34 -> 1.075648712
B31: 2011 | C31: 0.9814398913 | D31: =C31/$C$34 -> 1.055684555
B32: 2012 | C32: 0.9633734374 | D32: 1.036251397
B33: 2013 | C33: 0.9460855292 | D33: =C33/$C$34 -> 1.017655681
B34: 2014 | C34: 0.9296715452 | D34: =C34/$C$34 -> 1
B35: 2015 | C35: 0.9141633217 | D35: =C35/$C$34 -> 0.9833185993
B36: 2016 | C36: 0.8996670717 | D36: 0.9677257267
B37: 2017 | C37: 0.8861428312 | D37: 0.9531783948
B38: 2018 | C38: 0.8732487336 | D38: 0.9393088754
B39: 2019 | C39: 0.8606211562 | D39: 0.925726038
B40: 2020 | C40: 0.8480548072 | D40: 0.9122090609
B41: 2021 | C41: 0.8356082651 | D41: 0.898820954
B42: 2022 | C42: 0.8233973308 | D42: 0.8856862782
B43: 2023 | C43: 0.8116018801 | D43: 0.8729985169
B44: 2024 | C44: 0.8003217531 | D44: 0.8608650627
B45: 2025 | C45: 0.7895684797 | D45: 0.8492983181
B46: 2026 | C46: 0.7793501569 | D46: 0.8383069924
B47: 2027 | C47: 0.7696158815 | D47: 0.8278363315
B48: 2028 | C48: 0.7602534159 | D48: 0.8177656075
B49: 2029 | C49: 0.7511224789 | D49: 0.8079439268
B50: 2030 | C50: 0.7421157057 | D50: 0.7982558028
B51: 2031 | C51: 0.7332541051 | D51: 0.7887238336
B52: 2032 | C52: 0.724573734 | D52: 0.7793868036
B53: 2033 | C53: 0.7160984309 | D53: 0.7702703547
B54: 2034 | C54: 0.7078672931 | D54: 0.761416542
B55: 2035 | C55: 0.6999120073 | D55: 0.752859449
B56: 2036 | C56: 0.6922213754 | D56: 0.7445870307
B57: 2037 | C57: 0.6847694871 | D57: 0.7365714167
B58: 2038 | C58: 0.6775147711 | D58: 0.7287678908
B59: 2039 | C59: 0.6704166098 | D59: 0.7211327627
B60: 2040 | C60: 0.6634489334 | D60: 0.7136379905
B61: 2041 | C61: 0.6566067232 | D61: 0.7062781759
B62: 2042 | C62: 0.649901617 | D62: 0.6990658371
B63: 2043 | C63: 0.6433516918 | D63: 0.6920204185
B64: 2044 | C64: 0.6433516918 | D64: 0.6920204185
B65: 2045 | C65: 0.6433516918 | D65: 0.6920204185

Sheet Energy Prices
B1: Energy Prices
B3: Export Parameters | F3: 2009 Electricity Prices (in 2010$)
B4: To LCC & PBP Calcs: | F4: Div. & | G4: Elec
C5: Sampled Household | F5: Lrg State | G5: 2010$ | H5: 2009$
B6: Elec Price | C6: =INDEX(ElecPrice_Div, C10) -> 0.1128339834 | D6: $/kWh | F6: 1 | G6: =H6*$C$14/$C$13 -> 0.1775642195 | H6: 0.1746986781
F7: 2 | G7: =H7*$C$14/$C$13 -> 0.1385211333 | H7: 0.1362856715
B8: Import Parameters | F8: 3 | G8: 0.1128339834 | H8: 0.1110130622
B9: From RECS Household: | F9: 4 | G9: 0.09437800707 | H9: 0.09285492948
B10: Div & Lrg State | C10: =HH_Div -> 3 | F10: 5 | G10: 0.1107175866 | H10: 0.1089308199
F11: 6 | G11: 0.0976829468 | H11: 0.0961065339
B12: CPI | F12: 7 | G12: 0.08680934996 | H12: 0.08540841578
B13: 2009 | C13: 214.537 | F13: 8 | G13: 0.1036319567 | H13: 0.1019595383
B14: 2010 | C14: 218.056 | F14: 9 | G14: 0.10228531 | H14: 0.1006346239
F15: 10 | G15: 0.1875269819 | H15: 0.1845006609
F16: 11 | G16: 0.1505586091 | H16: 0.1481288858
F17: =F16+1 -> 12 | G17: 0.1262393509 | H17: 0.1242020931
F18: =F17+1 -> 13 | G18: 0.126091471 | H18: 0.1240565998
F19: U.S. Avg | G19: 0.123033201 | H19: 0.1210476842

Sheet Energy Price Trends
B1: =RIGHT(CELL("filename",A1), LEN(CELL("filename",A1)) - FIND("]",CELL("filename",A1))) -> Energy Price Trends
B3: Import Parameters | G3: AEO 2010 Residential Energy Price Projection for Electricity
B4: From LCC Summary | G4: 1 | H4: Reference Case
B5: Fuel Price Projection Index | D5: =iTrend -> 1 | G5: 2 | H5: High Growth Scenario
B6: Division | D6: =_division -> 3 | G6: 3 | H6: Low Growth Scenario
B8: Export Parameters | H8: Electricity Price | Q8: 1 | R8: 2 | S8: 3 | T8: 4 | U8: 5 | V8: 6 | W8: 7 | X8: 8 | Y8: 9 | Z8: 10
B9: To LCC Summary | D9: =INDEX(list_PriceTrend, iTrend) -> AEO 2010 Reference | H9: (in $ / MMBtu) | K9: (in cent / kWh) | P9: Electricity Regional Price Forecasts - Reference Case
C10: Electricity | H10: Ref. | I10: High | J10: Low | K10: Ref. | L10: High | M10: Low | P10: Year | Q10: Div 1 | R10: Div 2 | S10: Div 3 | T10: Div 4 | U10: Div 5 | V10: Div 6 | W10: Div 7 | X10: Div 8 | Y10: Div 9 | Z10: Nat.
C11: 2009 | G11: 2007 | H11: =OFFSET(P11,0,$D$6) -> 29.182049 | I11: =OFFSET(P44,0,$D$6) -> 29.182049 | J11: =OFFSET(P77,0,$D$6) -> 29.182049 | K11: =H11 * 3413 / 1000000 * 100 -> 9.959833324 | L11: 9.959833324 | M11: 9.959833324 | P11: 2007 | Q11: 50.040062 | R11: 41.799934 | S11: 29.182049 | T11: 24.891186 | U11: 30.045013 | V11: 25.035015 | W11: 33.421967 | X11: 27.890594 | Y11: 35.426567 | Z11: 31.816137
B12: 2008 | C12: =INDEX(AEOprice_Elec,$B12-$G$11+1,_iTrend) / INDEX(AEOprice_Elec,C$11-$G$11+1,_iTrend) -> 1.058696175 | G12: 2008 | H12: =OFFSET(P12,0,$D$6) -> 30.439625 | I12: =OFFSET(P45,0,$D$6) -> 30.439625 | J12: 30.439625 | K12: 10.38904401 | L12: 10.38904401 | M12: 10.38904401 | P12: 2008 | Q12: 51.878666 | R12: 43.584412 | S12: 30.439625 | T12: 25.413248 | U12: 31.257326 | V12: 27.303635 | W12: 37.807735 | X12: 28.824736 | Y12: 33.836456 | Z12: 33.292648
B13: =B12+1 -> 2009 | C13: 1 | G13: 2009 | H13: 28.751993 | I13: 28.766228 | J13: 28.77367 | K13: =H13 * 3413 / 1000000 * 100 -> 9.813055211 | L13: =I13 * 3413 / 1000000 * 100 -> 9.817913616 | M13: =J13 * 3413 / 1000000 * 100 -> 9.820453571 | P13: 2009 | Q13: 47.998478 | R13: 41.327881 | S13: 28.751993 | T13: 27.01977 | U13: 32.284168 | V13: 27.881445 | W13: 33.345249 | X13: 28.645554 | Y13: 32.181355 | Z13: 32.33482
B14: 2010 | C14: 0.9799244178 | G14: 2010 | H14: 28.17478 | I14: 28.24313 | J14: 28.223711 | K14: 9.616052414 | L14: 9.639380269 | M14: 9.632752564 | P14: 2010 | Q14: 46.620739 | R14: 39.678307 | S14: 28.17478 | T14: 26.822464 | U14: 29.385845 | V14: 26.969635 | W14: 31.557692 | X14: 27.73913 | Y14: 32.555157 | Z14: 30.942646
B15: 2011 | C15: 0.9211690821 | G15: 2011 | H15: 26.485447 | I15: 26.949492 | J15: 26.197536 | K15: 9.039483061 | L15: 9.19786162 | M15: 8.941219037 | P15: 2011 | Q15: 43.232697 | R15: 36.856564 | S15: 26.485447 | T15: 25.962183 | U15: 29.207754 | V15: 26.228092 | W15: 29.334688 | X15: 28.494537 | Y15: 32.425941 | Z15: 29.901524
B16: 2012 | C16: 0.9602927004 | G16: 2012 | H16: 27.610329 | I16: 28.25873 | J16: 27.154697 | K16: 9.423405288 | L16: 9.644704549 | M16: 9.267898086 | P16: 2012 | Q16: 46.393993 | R16: 40.203434 | S16: 27.610329 | T16: 26.271986 | U16: 30.085884 | V16: 26.569323 | W16: 31.032965 | X16: 28.842295 | Y16: 32.980701 | Z16: 31.0847
B17: 2013 | C17: 0.9707244642 | G17: 2013 | H17: 27.910263 | I17: 28.530491 | J17: 27.250048 | K17: 9.525772762 | L17: 9.737456578 | M17: 9.300441382 | P17: 2013 | Q17: 47.316044 | R17: 40.968372 | S17: 27.910263 | T17: 26.490854 | U17: 30.683517 | V17: 26.594473 | W17: 31.183144 | X17: 28.962278 | Y17: 33.503059 | Z17: 31.47048
B18: 2014 | C18: 0.9787942005 | G18: 2014 | H18: 28.142284 | I18: 28.684372 | J18: 27.443699 | K18: 9.604961529 | L18: 9.789976164 | M18: 9.366534469 | P18: 2014 | Q18: 47.612133 | R18: 40.400913 | S18: 28.142284 | T18: 26.72716 | U18: 30.605881 | V18: 26.608732 | W18: 31.230076 | X18: 28.940435 | Y18: 33.821209 | Z18: 31.486801
B19: 2015 | C19: 0.983493666 | G19: 2015 | H19: 28.277403 | I19: 28.939541 | J19: 27.57197 | K19: 9.651077644 | L19: 9.877065343 | M19: 9.410313361 | P19: 2015 | Q19: 47.293716 | R19: 40.412384 | S19: 28.277403 | T19: 26.584944 | U19: 30.497 | V19: 26.401985 | W19: 31.3853 | X19: 28.921185 | Y19: 33.569004 | Z19: 31.426136
B20: 2016 | C20: 0.9971565449 | G20: 2016 | H20: 28.670238 | I20: 29.377052 | J20: 27.922321 | K20: 9.785152229 | L20: 10.02638785 | M20: 9.529888157 | P20: 2016 | Q20: 47.047527 | R20: 41.14785 | S20: 28.670238 | T20: 26.584457 | U20: 30.653488 | V20: 26.528849 | W20: 31.905083 | X20: 28.967232 | Y20: 33.388756 | Z20: 31.644388
B21: 2017 | C21: 0.9977386263 | G21: 2017 | H21: 28.686974 | I21: 29.272953 | J21: 27.702845 | K21: 9.790864226 | L21: 9.990858859 | M21: 9.454980998 | P21: 2017 | Q21: 46.969898 | R21: 41.735027 | S21: 28.686974 | T21: 26.62039 | U21: 30.854353 | V21: 26.801918 | W21: 32.164452 | X21: 29.056398 | Y21: 33.215446 | Z21: 31.801477
B22: 2018 | C22: 0.9970271278 | G22: 2018 | H22: 28.666517 | I22: 29.418282 | J22: 27.533785 | K22: 9.783882252 | L22: 10.04045965 | M22: 9.397280821 | P22: 2018 | Q22: 46.848969 | R22: 42.00782 | S22: 28.666517 | T22: 26.539379 | U22: 30.885441 | V22: 26.847235 | W22: 31.988989 | X22: 29.132547 | Y22: 32.965477 | Z22: 31.778835
B23: 2019 | C23: 0.9970768983 | G23: 2019 | H23: 28.667948 | I23: 29.701653 | J23: 27.473577 | K23: 9.784370652 | L23: 10.13717417 | M23: 9.37673183 | P23: 2019 | Q23: 46.784828 | R23: 41.89941 | S23: 28.667948 | T23: 26.441769 | U23: 30.690378 | V23: 26.674257 | W23: 31.978144 | X23: 29.239315 | Y23: 32.774826 | Z23: 31.679483
B24: 2020 | C24: 1.002386513 | G24: 2020 | H24: 28.82061 | I24: 29.896969 | J24: 27.529093 | K24: 9.836474193 | L24: 10.20383552 | M24: 9.395679441 | P24: 2020 | Q24: 46.838463 | R24: 42.320034 | S24: 28.82061 | T24: 26.506039 | U24: 30.791998 | V24: 26.803905 | W24: 32.178677 | X24: 29.67391 | Y24: 32.818855 | Z24: 31.844723
B25: 2021 | C25: 1.010316154 | G25: 2021 | H25: 29.048603 | I25: 30.230722 | J25: 27.673864 | K25: 9.914288204 | L25: 10.31774542 | M25: 9.445089783 | P25: 2021 | Q25: 46.84367 | R25: 42.719177 | S25: 29.048603 | T25: 26.55163 | U25: 30.911547 | V25: 26.861843 | W25: 32.291618 | X25: 30.068609 | Y25: 32.878067 | Z25: 32.008987
B26: 2022 | C26: 1.01379014 | G26: 2022 | H26: 29.148487 | I26: 30.33193 | J26: 27.849354 | K26: 9.948378613 | L26: 10.35228771 | M26: 9.50498452 | P26: 2022 | Q26: 46.993732 | R26: 42.849396 | S26: 29.148487 | T26: 26.580637 | U26: 30.892042 | V26: 26.783016 | W26: 32.492054 | X26: 30.392124 | Y26: 32.897491 | Z26: 32.083336
B27: 2023 | C27: 1.021943592 | G27: 2023 | H27: 29.382915 | I27: 30.432739 | J27: 27.881575 | K27: 10.02838889 | L27: 10.38669382 | M27: 9.515981548 | P27: 2023 | Q27: 47.147305 | R27: 43.236187 | S27: 29.382915 | T27: 26.480341 | U27: 30.954969 | V27: 26.743441 | W27: 32.665035 | X27: 30.621323 | Y27: 32.891193 | Z27: 32.200474
B28: 2024 | C28: 1.031626016 | G28: 2024 | H28: 29.661304 | I28: 30.894062 | J28: 28.403276 | K28: 10.12340306 | L28: 10.54414336 | M28: 9.694038099 | P28: 2024 | Q28: 47.029922 | R28: 43.326496 | S28: 29.661304 | T28: 26.405256 | U28: 31.068859 | V28: 26.77354 | W28: 32.99934 | X28: 30.532789 | Y28: 32.652649 | Z28: 32.283989
B29: 2025 | C29: 1.028037083 | G29: 2025 | H29: 29.558115 | I29: 31.010143 | J29: 29.053209 | K29: 10.08818465 | L29: 10.58376181 | M29: 9.915860232 | P29: 2025 | Q29: 46.729462 | R29: 43.119061 | S29: 29.558115 | T29: 26.224413 | U29: 31.052122 | V29: 26.734058 | W29: 33.212788 | X29: 30.7589 | Y29: 32.58329 | Z29: 32.258785
B30: 2026 | C30: 1.028050612 | G30: 2026 | H30: 29.558504 | I30: 31.287033 | J30: 28.597406 | K30: 10.08831742 | L30: 10.67826436 | M30: 9.760294668 | P30: 2026 | Q30: 46.808716 | R30: 43.328922 | S30: 29.558504 | T30: 26.077311 | U30: 31.130774 | V30: 26.759787 | W30: 33.520138 | X30: 31.258501 | Y30: 32.815708 | Z30: 32.397194
B31: 2027 | C31: 1.031593984 | G31: 2027 | H31: 29.660383 | I31: 31.530064 | J31: 28.249317 | K31: 10.12308872 | L31: 10.76121084 | M31: 9.641491892 | P31: 2027 | Q31: 47.158661 | R31: 43.590168 | S31: 29.660383 | T31: 26.007978 | U31: 31.255623 | V31: 26.782608 | W31: 33.838894 | X31: 31.768421 | Y31: 32.947197 | Z31: 32.571228
B32: 2028 | C32: 1.035261556 | G32: 2028 | H32: 29.765833 | I32: 31.83971 | J32: 28.241533 | K32: 10.1590788 | L32: 10.86689302 | M32: 9.638835213 | P32: 2028 | Q32: 47.448494 | R32: 43.946152 | S32: 29.765833 | T32: 25.960615 | U32: 31.328497 | V32: 26.83095 | W32: 34.21225 | X32: 32.135502 | Y32: 33.013233 | Z32: 32.732079
B33: 2029 | C33: 1.04422083 | G33: 2029 | H33: 30.02343 | I33: 32.109596 | J33: 28.200529 | K33: 10.24699666 | L33: 10.95900511 | M33: 9.624840548 | P33: 2029 | Q33: 47.891747 | R33: 44.766224 | S33: 30.02343 | T33: 26.013229 | U33: 31.706007 | V33: 27.078165 | W33: 34.932659 | X33: 32.64629 | Y33: 33.180302 | Z33: 33.134075
B34: 2030 | C34: 1.053073156 | G34: 2030 | H34: 30.277952 | I34: 32.481441 | J34: 28.194647 | K34: 10.33386502 | L34: 11.08591581 | M34: 9.622833021 | P34: 2030 | Q34: 48.420536 | R34: 44.969482 | S34: 30.277952 | T34: 26.164974 | U34: 31.990871 | V34: 27.284761 | W34: 35.586113 | X34: 33.130909 | Y34: 33.391579 | Z34: 33.455688
B35: 2031 | C35: 1.05705841 | G35: 2031 | H35: 30.392536 | I35: 32.739998 | J35: 28.193804 | K35: 10.37297254 | L35: 11.17416132 | M35: 9.622545305 | P35: 2031 | Q35: 48.925014 | R35: 45.480709 | S35: 30.392536 | T35: 26.322542 | U35: 32.313126 | V35: 27.490324 | W35: 36.263027 | X35: 33.672497 | Y35: 33.637695 | Z35: 33.808029
B36: 2032 | C36: 1.063465061 | G36: 2032 | H36: 30.57674 | I36: 32.672115 | J36: 28.425394 | K36: 10.43584136 | L36: 11.15099285 | M36: 9.701586972 | P36: 2032 | Q36: 49.250168 | R36: 45.911026 | S36: 30.57674 | T36: 26.537947 | U36: 32.582146 | V36: 27.579685 | W36: 36.858356 | X36: 34.113731 | Y36: 33.806961 | Z36: 34.109547
B37: 2033 | C37: 1.066734748 | G37: 2033 | H37: 30.67075 | I37: 32.450615 | J37: 28.463795 | K37: 10.46792698 | L37: 11.0753949 | M37: 9.714693234 | P37: 2033 | Q37: 49.440277 | R37: 46.123512 | S37: 30.67075 | T37: 26.458349 | U37: 32.669762 | V37: 27.660452 | W37: 37.242008 | X37: 34.438889 | Y37: 33.895401 | Z37: 34.256371
B38: 2034 | C38: 1.078518487 | G38: 2034 | H38: 31.009556 | I38: 32.772705 | J38: 28.53042 | K38: 10.58356146 | L38: 11.18532422 | M38: 9.737432346 | P38: 2034 | Q38: 49.566902 | R38: 46.487488 | S38: 31.009556 | T38: 26.526711 | U38: 32.861393 | V38: 27.859472 | W38: 37.53899 | X38: 34.841476 | Y38: 34.039982 | Z38: 34.494537
B39: 2035 | C39: 1.082960197 | G39: 2035 | H39: 31.137264 | I39: 33.065769 | J39: 28.548641 | K39: 10.6271482 | L39: 11.28534696 | M39: 9.743651173 | P39: 2035 | Q39: 49.907631 | R39: 46.652382 | S39: 31.137264 | T39: 26.850382 | U39: 33.075478 | V39: 27.928711 | W39: 37.869385 | X39: 35.190647 | Y39: 34.17622 | Z39: 34.710754
B40: 2036 | C40: =C39*(C$39/C$24)^(0.1) -> 1.091365505 | G40: Past 2030, the rate of change from 2020 to 2035 is used.
B41: 2037 | C41: =C40*(C$39/C$24)^(0.1) -> 1.099836051 | Q41: 1 | R41: 2 | S41: 3 | T41: 4 | U41: 5 | V41: 6 | W41: 7 | X41: 8 | Y41: 9 | Z41: 10
B42: 2038 | C42: 1.108372339 | P42: Electricity Regional Price Forecasts - High Growth
B43: 2039 | C43: 1.116974882 | P43: Year | Q43: Div 1 | R43: Div 2 | S43: Div 3 | T43: Div 4 | U43: Div 5 | V43: Div 6 | W43: Div 7 | X43: Div 8 | Y43: Div 9 | Z43: Nat.
B44: 2040 | C44: 1.125644192 | P44: 2007 | Q44: 50.040062 | R44: 41.799934 | S44: 29.182049 | T44: 24.891186 | U44: 30.045013 | V44: 25.035015 | W44: 33.421967 | X44: 27.890594 | Y44: 35.426567 | Z44: 31.816137
B45: 2041 | C45: 1.134380789 | P45: 2008 | Q45: 51.878666 | R45: 43.584412 | S45: 30.439625 | T45: 25.413248 | U45: 31.257326 | V45: 27.303635 | W45: 37.807735 | X45: 28.824736 | Y45: 33.836456 | Z45: 33.292648
B46: 2042 | C46: 1.143185194 | P46: 2009 | Q46: 48.001842 | R46: 41.345268 | S46: 28.766228 | T46: 27.069653 | U46: 32.310802 | V46: 27.909225 | W46: 33.371613 | X46: 28.648445 | Y46: 32.182499 | Z46: 32.355492
B47: 2043 | C47: 1.152057934 | P47: 2010 | Q47: 46.633858 | R47: 39.701054 | S47: 28.24313 | T47: 26.892612 | U47: 29.414694 | V47: 27.014648 | W47: 31.623116 | X47: 27.742102 | Y47: 32.573364 | Z47: 30.982714
B48: 2044 | C48: 1.160999539 | P48: 2011 | Q48: 43.760574 | R48: 37.520809 | S48: 26.949492 | T48: 26.234718 | U48: 29.606232 | V48: 26.565842 | W48: 29.858559 | X48: 28.827921 | Y48: 32.892628 | Z48: 30.344172
B49: 2045 | C49: 1.170010543 | P49: 2012 | Q49: 47.117371 | R49: 41.265423 | S49: 28.25873 | T49: 26.607737 | U49: 30.587202 | V49: 27.003632 | W49: 31.779793 | X49: 29.256088 | Y49: 33.750286 | Z49: 31.705696
B50: 2046 | C50: 1.179091485 | P50: 2013 | Q50: 47.983963 | R50: 41.472794 | S50: 28.530491 | T50: 26.858994 | U50: 31.080286 | V50: 27.020962 | W50: 31.776392 | X50: 29.455873 | Y50: 34.75536 | Z50: 32.041798
B51: 2047 | C51: 1.188242909 | P51: 2014 | Q51: 48.153767 | R51: 40.819839 | S51: 28.684372 | T51: 27.893318 | U51: 30.81007 | V51: 26.948761 | W51: 31.931288 | X51: 29.505142 | Y51: 35.169258 | Z51: 32.069458
B52: 2048 | C52: 1.19746536 | P52: 2015 | Q52: 48.01683 | R52: 40.891808 | S52: 28.939541 | T52: 28.202127 | U52: 30.782206 | V52: 26.804394 | W52: 32.0947 | X52: 29.640141 | Y52: 34.993408 | Z52: 32.11758
B53: 2049 | C53: 1.206759391 | P53: 2016 | Q53: 47.868114 | R53: 41.652596 | S53: 29.377052 | T53: 28.159243 | U53: 31.140177 | V53: 26.956821 | W53: 32.550186 | X53: 29.845139 | Y53: 34.912041 | Z53: 32.411949
B54: 2050 | C54: 1.216125557 | P54: 2017 | Q54: 47.801857 | R54: 41.96344 | S54: 29.272953 | T54: 28.087467 | U54: 31.34573 | V54: 27.191837 | W54: 32.799583 | X54: 30.111061 | Y54: 34.852196 | Z54: 32.541508
P55: 2018 | Q55: 47.86129 | R55: 42.391888 | S55: 29.418282 | T55: 28.057055 | U55: 31.477282 | V55: 27.362865 | W55: 32.684116 | X55: 30.41223 | Y55: 34.716129 | Z55: 32.639538
P56: 2019 | Q56: 48.035099 | R56: 42.639801 | S56: 29.701653 | T56: 27.968876 | U56: 31.511059 | V56: 27.346127 | W56: 32.967968 | X56: 30.787039 | Y56: 34.540489 | Z56: 32.755318
P57: 2020 | Q57: 48.258457 | R57: 43.313591 | S57: 29.896969 | T57: 27.946308 | U57: 31.760206 | V57: 27.524591 | W57: 33.144318 | X57: 31.298367 | Y57: 34.490238 | Z57: 32.98275
P58: 2021 | Q58: 47.935875 | R58: 43.71706 | S58: 30.230722 | T58: 27.960499 | U58: 32.129543 | V58: 27.670418 | W58: 33.214382 | X58: 31.641727 | Y58: 34.46587 | Z58: 33.201
P59: 2022 | Q59: 47.810112 | R59: 43.771988 | S59: 30.33193 | T59: 27.969601 | U59: 32.137119 | V59: 27.642336 | W59: 33.338882 | X59: 31.728573 | Y59: 34.354988 | Z59: 33.22768
P60: 2023 | Q60: 47.936321 | R60: 43.993275 | S60: 30.432739 | T60: 27.950361 | U60: 32.234501 | V60: 27.614433 | W60: 33.554409 | X60: 32.131729 | Y60: 34.326447 | Z60: 33.343945
P61: 2024 | Q61: 48.270386 | R61: 44.554329 | S61: 30.894062 | T61: 27.88163 | U61: 32.499813 | V61: 27.825327 | W61: 34.295174 | X61: 32.695988 | Y61: 34.554546 | Z61: 33.720276
P62: 2025 | Q62: 48.600899 | R62: 45.015663 | S62: 31.010143 | T62: 27.871897 | U62: 32.809551 | V62: 28.045536 | W62: 35.024029 | X62: 33.307896 | Y62: 34.836514 | Z62: 34.065487
P63: 2026 | Q63: 49.198448 | R63: 45.522846 | S63: 31.287033 | T63: 27.800236 | U63: 33.1357 | V63: 28.3111 | W63: 35.767185 | X63: 33.952652 | Y63: 35.157509 | Z63: 34.456848
P64: 2027 | Q64: 49.605186 | R64: 46.010025 | S64: 31.530064 | T64: 27.803505 | U64: 33.414246 | V64: 28.473671 | W64: 36.389339 | X64: 34.504429 | Y64: 35.339581 | Z64: 34.779812
P65: 2028 | Q65: 50.05817 | R65: 46.680214 | S65: 31.83971 | T65: 27.864317 | U65: 33.750893 | V65: 28.743298 | W65: 37.18483 | X65: 35.014164 | Y65: 35.461063 | Z65: 35.172623
P66: 2029 | Q66: 50.466309 | R66: 47.274055 | S66: 32.109596 | T66: 28.059877 | U66: 34.112011 | V66: 29.059124 | W66: 37.997929 | X66: 35.622429 | Y66: 35.692352 | Z66: 35.5933
P67: 2030 | Q67: 51.005505 | R67: 47.965786 | S67: 32.481441 | T67: 28.10347 | U67: 34.491852 | V67: 29.380062 | W67: 38.840759 | X67: 36.139282 | Y67: 35.924484 | Z67: 36.031033
P68: 2031 | Q68: 51.42836 | R68: 48.283436 | S68: 32.739998 | T68: 28.172508 | U68: 34.801662 | V68: 29.609114 | W68: 39.248718 | X68: 36.638367 | Y68: 36.178097 | Z68: 36.332291
P69: 2032 | Q69: 51.456413 | R69: 48.263447 | S69: 32.672115 | T69: 28.280556 | U69: 34.872742 | V69: 29.540094 | W69: 39.132221 | X69: 36.906597 | Y69: 36.226177 | Z69: 36.350639
P70: 2033 | Q70: 51.611366 | R70: 48.355808 | S70: 32.450615 | T70: 28.322033 | U70: 34.790192 | V70: 29.533695 | W70: 39.117683 | X70: 37.110939 | Y70: 36.221298 | Z70: 36.327732
P71: 2034 | Q71: 51.421581 | R71: 48.420589 | S71: 32.772705 | T71: 28.250582 | U71: 35.07708 | V71: 29.826773 | W71: 39.377895 | X71: 37.529762 | Y71: 36.479923 | Z71: 36.556892
P72: 2035 | Q72: 51.625042 | R72: 48.818508 | S72: 33.065769 | T72: 28.310036 | U72: 35.386944 | V72: 30.087364 | W72: 39.717754 | X72: 37.865749 | Y72: 36.648434 | Z72: 36.835266
Q74: 1 | R74: 2 | S74: 3 | T74: 4 | U74: 5 | V74: 6 | W74: 7 | X74: 8 | Y74: 9 | Z74: 10
P75: Electricity Regional Price Forecasts - Low Growth
P76: Year | Q76: Div 1 | R76: Div 2 | S76: Div 3 | T76: Div 4 | U76: Div 5 | V76: Div 6 | W76: Div 7 | X76: Div 8 | Y76: Div 9 | Z76: Nat.
P77: 2007 | Q77: 50.040062 | R77: 41.799934 | S77: 29.182049 | T77: 24.891186 | U77: 30.045013 | V77: 25.035015 | W77: 33.421967 | X77: 27.890594 | Y77: 35.426567 | Z77: 31.816137
P78: 2008 | Q78: 51.878666 | R78: 43.584412 | S78: 30.439625 | T78: 25.413248 | U78: 31.257326 | V78: 27.303635 | W78: 37.807735 | X78: 28.824736 | Y78: 33.836456 | Z78: 33.292648
P79: 2009 | Q79: 47.997448 | R79: 41.362423 | S79: 28.77367 | T79: 27.071661 | U79: 32.311848 | V79: 27.914984 | W79: 33.381344 | X79: 28.645056 | Y79: 32.162601 | Z79: 32.357891
P80: 2010 | Q80: 46.591278 | R80: 39.70789 | S80: 28.223711 | T80: 26.863295 | U80: 29.400925 | V80: 26.981247 | W80: 31.593599 | X80: 27.754351 | Y80: 32.422108 | Z80: 30.950991
P81: 2011 | Q81: 42.904068 | R81: 36.496475 | S81: 26.197536 | T81: 25.794159 | U81: 28.936716 | V81: 26.000935 | W81: 28.985706 | X81: 28.318256 | Y81: 31.964598 | Z81: 29.60483
P82: 2012 | Q82: 45.966446 | R82: 39.495167 | S82: 27.154697 | T82: 26.050787 | U82: 29.727295 | V82: 26.268547 | W82: 30.509604 | X82: 28.604303 | Y82: 32.283501 | Z82: 30.641632
P83: 2013 | Q83: 46.705574 | R83: 39.983387 | S83: 27.250048 | T83: 26.110773 | U83: 30.162304 | V83: 26.200199 | W83: 30.534126 | X83: 28.636732 | Y83: 32.232624 | Z83: 30.820847
P84: 2014 | Q84: 47.02634 | R84: 39.839596 | S84: 27.443699 | T84: 26.284391 | U84: 30.071552 | V84: 26.195137 | W84: 30.561911 | X84: 28.539108 | Y84: 32.223625 | Z84: 30.821066
P85: 2015 | Q85: 46.541725 | R85: 39.662708 | S85: 27.57197 | T85: 26.142044 | U85: 29.886469 | V85: 25.964638 | W85: 30.625574 | X85: 28.370218 | Y85: 31.928497 | Z85: 30.687357
P86: 2016 | Q86: 46.107002 | R86: 40.251225 | S86: 27.922321 | T86: 26.135536 | U86: 29.940563 | V86: 26.017017 | W86: 30.912865 | X86: 28.190758 | Y86: 31.617523 | Z86: 30.78364
P87: 2017 | Q87: 45.873806 | R87: 40.191814 | S87: 27.702845 | T87: 25.992815 | U87: 29.934999 | V87: 26.162752 | W87: 30.944958 | X87: 28.076021 | Y87: 31.430372 | Z87: 30.718042
P88: 2018 | Q88: 45.737034 | R88: 40.563072 | S88: 27.533785 | T88: 25.829599 | U88: 29.905514 | V88: 26.111408 | W88: 30.724665 | X88: 28.029114 | Y88: 31.223852 | Z88: 30.643789
P89: 2019 | Q89: 45.614212 | R89: 40.063709 | S89: 27.473577 | T89: 25.663404 | U89: 29.564835 | V89: 25.850595 | W89: 30.651833 | X89: 28.022552 | Y89: 31.024212 | Z89: 30.430202
P90: 2020 | Q90: 45.596291 | R90: 40.578514 | S90: 27.529093 | T90: 25.699099 | U90: 29.643908 | V90: 25.938532 | W90: 30.706989 | X90: 28.248913 | Y90: 31.071182 | Z90: 30.542564
P91: 2021 | Q91: 45.388306 | R91: 40.6199 | S91: 27.673864 | T91: 25.723888 | U91: 29.646364 | V91: 25.952433 | W91: 30.813772 | X91: 28.50301 | Y91: 31.18029 | Z91: 30.614792
P92: 2022 | Q92: 45.442032 | R92: 40.867283 | S92: 27.849354 | T92: 25.703257 | U92: 29.625433 | V92: 25.849936 | W92: 30.956367 | X92: 28.715508 | Y92: 31.221331 | Z92: 30.687691
P93: 2023 | Q93: 45.622997 | R93: 41.206165 | S93: 27.881575 | T93: 25.670931 | U93: 29.591591 | V93: 25.675789 | W93: 31.348808 | X93: 28.953329 | Y93: 31.112593 | Z93: 30.765112
P94: 2024 | Q94: 45.935261 | R94: 41.725994 | S94: 28.403276 | T94: 25.790833 | U94: 29.777279 | V94: 25.74655 | W94: 31.691582 | X94: 29.223793 | Y94: 31.098827 | Z94: 31.023117
P95: 2025 | Q95: 46.158947 | R95: 42.147655 | S95: 29.053209 | T95: 25.966026 | U95: 30.006603 | V95: 25.908581 | W95: 32.039463 | X95: 29.576338 | Y95: 31.283583 | Z95: 31.336679
P96: 2026 | Q96: 46.156437 | R96: 42.001419 | S96: 28.597406 | T96: 25.769663 | U96: 29.998161 | V96: 25.758133 | W96: 32.183506 | X96: 29.891479 | Y96: 31.512592 | Z96: 31.301992
P97: 2027 | Q97: 46.199707 | R97: 41.731758 | S97: 28.249317 | T97: 25.511631 | U97: 29.852392 | V97: 25.61541 | W97: 32.177876 | X97: 30.088478 | Y97: 31.478085 | Z97: 31.173048
P98: 2028 | Q98: 46.291199 | R98: 42.031921 | S98: 28.241533 | T98: 25.407412 | U98: 29.858088 | V98: 25.534271 | W98: 32.326286 | X98: 30.241566 | Y98: 31.43523 | Z98: 31.216152
P99: 2029 | Q99: 46.313427 | R99: 42.353867 | S99: 28.200529 | T99: 25.433798 | U99: 29.950422 | V99: 25.516445 | W99: 32.586487 | X99: 30.337063 | Y99: 31.376814 | Z99: 31.301807
P100: 2030 | Q100: 46.287117 | R100: 42.043526 | S100: 28.194647 | T100: 25.468023 | U100: 29.935806 | V100: 25.463112 | W100: 32.696781 | X100: 30.239727 | Y100: 31.120129 | Z100: 31.246183
P101: 2031 | Q101: 46.441616 | R101: 42.236977 | S101: 28.193804 | T101: 25.522005 | U101: 29.995768 | V101: 25.478285 | W101: 33.024391 | X101: 30.42642 | Y101: 31.117758 | Z101: 31.349756
P102: 2032 | Q102: 46.949902 | R102: 42.626137 | S102: 28.425394 | T102: 25.513966 | U102: 30.146633 | V102: 25.488886 | W102: 33.364273 | X102: 30.826233 | Y102: 31.337227 | Z102: 31.573277
P103: 2033 | Q103: 47.221931 | R103: 42.875149 | S103: 28.463795 | T103: 25.471786 | U103: 30.21154 | V103: 25.480434 | W103: 33.647381 | X103: 31.24066 | Y103: 31.543985 | Z103: 31.714237
P104: 2034 | Q104: 47.446709 | R104: 43.028618 | S104: 28.53042 | T104: 25.433598 | U104: 30.309895 | V104: 25.499214 | W104: 34.039486 | X104: 31.611601 | Y104: 31.763132 | Z104: 31.873587
P105: 2035 | Q105: 47.524639 | R105: 43.324005 | S105: 28.548641 | T105: 25.41078 | U105: 30.385162 | V105: 25.492794 | W105: 34.366123 | X105: 31.899357 | Y105: 31.903053 | Z105: 32.003872

Sheet Discount Rate
B1: Discount Rate
B3: Export Parameters | F3: DISCOUNT RATE (Real Interest Rate) FOR NEW HOME INSTALLATIONS | P3: Distribution of Real Interest Rates | AC3: Real Gains and Losses for Various Assets
B4: to: LCC Summary | C4: Sampled Household | G4: Share | H4: Finance Method | I4: Mean | J4: Min | K4: Max | L4: Std.Dev. | M4: sampled | P4: 1st Mortgage | R4: Home Equity | T4: Credit Card | V4: Installment Loans | X4: Other Residence | Z4: Other LOC | AD4: Savings | AE4: CD - 6mo. | AF4: Treasury | AG4: Corp AAA | AH4: Stocks | AI4: Mutual
B5: Discount Rate | C5: =CHOOSE(C10, M24, M5) -> 0.02450231787 | G5: 1 | H5: New home (after tax) | I5: =P42 -> 0.03036503856 | J5: =P43 -> 0.005 | K5: =P44 -> 0.229 | L5: =P45 -> 0.05946798447 | M5: 0.025 | O5: DISTRIBUTION | P5: rate | Q5: wt | R5: rate | S5: wt | T5: rate | U5: wt | V5: rate | W5: wt | X5: rate | Y5: wt | Z5: rate | AA5: wt | AC5: Year | AD5: Accounts | AE5: CDs | AF5: Sav Bonds | AG5: Bonds | AH5: S&P 500 | AI5: Fund
P6: 0.005 | Q6: 0.069 | R6: 0.004 | S6: 0.104 | T6: 0 | U6: 0.069 | V6: 0 | W6: 0.402 | X6: 0.002 | Y6: 0.151 | Z6: 0.001 | AA6: 0.05 | AC6: 1977 | AE6: -0.005564521452 | AF6: 0.0117120462 | AG6: 0.01424719472 | AH6: -0.1265916109 | AI6: -0.08049039185
F7: DISCOUNT RATE (Real Interest Rate) FOR REPLACEMENTS | P7: 0.016 | Q7: 0.224 | R7: 0.015 | S7: 0.098 | T7: 0.014 | U7: 0.023 | V7: 0.014 | W7: 0.023 | X7: 0.015 | Y7: 0.071 | Z7: 0.014 | AA7: 0.038 | AC7: 1978 | AE7: 0.009380368098 | AF7: 0.00835797546 | AG7: 0.01058865031 | AH7: -0.01005174769 | AI7: -0.003915173308
B8: Import Parameters | G8: Share | H8: Finance Method | I8: Mean | J8: Min | K8: Max | L8: Std.Dev. | M8: sampled | P8: 0.025 | Q8: 0.327 | R8: 0.026 | S8: 0.18 | T8: 0.025 | U8: 0.024 | V8: 0.024 | W8: 0.047 | X8: 0.025 | Y8: 0.098 | Z8: 0.025 | AA8: 0.016 | AC8: 1979 | AE8: 0.0006314049587 | AF8: -0.01858732782 | AG8: -0.01544407713 | AH8: 0.0643899117 | AI8: 0.03673083186
B9: from: RECS Household | D9: ="RECS id " & id -> RECS id 4112 | F9: 1 | G9: 0.03578510554 | H9: Home Equity Loans (after tax) | I9: =R42 -> 0.03879794521 | J9: =R43 -> 0.004 | K9: =R44 -> 0.425 | L9: =R45 -> 0.09496266896 | M9: 0.035 | P9: 0.035 | Q9: 0.284 | R9: 0.035 | S9: 0.3 | T9: 0.035 | U9: 0.041 | V9: 0.034 | W9: 0.062 | X9: 0.035 | Y9: 0.179 | Z9: 0.035 | AA9: 0.052 | AC9: 1980 | AE9: -0.00492184466 | AF9: -0.01963567961 | AG9: -0.01373252427 | AH9: 0.1606770417 | AI9: 0.1005728013
B10: replacement or new? | C10: =ReplNew -> 1 | F10: 2 | G10: 0.02038380488 | H10: Credit card | I10: =T42 -> 0.1071184948 | J10: =T43 -> 0 | K10: =T44 -> 0.369 | L10: =T45 -> 0.09490889803 | M10: 0.164 | P10: 0.044 | Q10: 0.171 | R10: 0.045 | S10: 0.21 | T10: 0.045 | U10: 0.055 | V10: 0.045 | W10: 0.067 | X10: 0.045 | Y10: 0.174 | Z10: 0.045 | AA10: 0.076 | AC10: 1981 | AE10: 0.04962552255 | AF10: 0.02841364136 | AG10: 0.03494037404 | AH10: -0.1361360788 | AI10: -0.08128617209
B11: (1=repl, 2=new) | F11: 3 | G11: 0.01680075624 | H11: Other Installment Loans | I11: =V42 -> 0.05935021459 | J11: =V43 -> 0 | K11: =V44 -> 0.935 | L11: =V45 -> 0.1751407507 | M11: 0 | P11: 0.054 | Q11: 0.05 | R11: 0.054 | S11: 0.131 | T11: 0.056 | U11: 0.076 | V11: 0.056 | W11: 0.078 | X11: 0.055 | Y11: 0.206 | Z11: 0.055 | AA11: 0.144 | AC11: 1982 | AE11: 0.06037440415 | AF11: 0.06216414508 | AG11: 0.07186642487 | AH11: 0.1343100629 | AI11: 0.1102614236
F12: 4 | G12: 0.04940163066 | H12: Other Residence Loans | I12: =X42 -> 0.0440856898 | J12: =X43 -> 0.002 | K12: =X44 -> 0.179 | L12: =X45 -> 0.05496462766 | M12: 0.045 | P12: 0.064 | Q12: 0.023 | R12: 0.064 | S12: 0.055 | T12: 0.067 | U12: 0.088 | V12: 0.067 | W12: 0.088 | X12: 0.065 | Y12: 0.148 | Z12: 0.067 | AA12: 0.11 | AC12: 1983 | AE12: 0.05878714859 | AF12: 0.07719578313 | AG12: 0.08552811245 | AH12: 0.185294733 | AI12: 0.1492617497
F13: 5 | G13: 0.004868030254 | H13: Other Line of Credit | I13: =Z42 -> 0.08810882605 | J13: =Z43 -> 0.001 | K13: =Z44 -> 0.541 | L13: =Z45 -> 0.1090830876 | M13: 0.045 | P13: 0.074 | Q13: 0.008 | R13: 0.075 | S13: 0.042 | T13: 0.075 | U13: 0.05 | V13: 0.075 | W13: 0.039 | X13: 0.075 | Y13: 0.069 | Z13: 0.076 | AA13: 0.06 | AC13: 1984 | AD13: 0.0549707411 | AE13: 0.06128161694 | AF13: 0.07757805582 | AG13: 0.08045389798 | AH13: 0.01753183284 | AI13: 0.0375472405
F14: 6 | G14: 0.04522790903 | H14: Checking Accounts | I14: 0 | J14: 0 | K14: 0 | L14: 0 | M14: 0 | P14: 0.085 | Q14: 0.005 | R14: 0.085 | S14: 0.022 | T14: 0.087 | U14: 0.075 | V14: 0.086 | W14: 0.046 | X14: 0.086 | Y14: 0.029 | Z14: 0.087 | AA14: 0.105 | AC14: 1985 | AD14: 0.05350834108 | AE14: 0.04517992565 | AF14: 0.06980306691 | AG14: 0.07540362454 | AH14: 0.2672241665 | AI14: 0.2014171333
F15: 7 | G15: 0.1570184485 | H15: Savings and Money Market | I15: =AD39 -> 0.02271715151 | J15: =AD41 -> -0.007229574731 | K15: =AD42 -> 0.06008743917 | L15: =AD43 -> 0.01675590738 | M15: 0.02450231787 | P15: 0.095 | Q15: 0.002 | R15: 0.095 | S15: 0.01 | T15: 0.096 | U15: 0.069 | V15: 0.095 | W15: 0.043 | X15: 0.094 | Y15: 0.017 | Z15: 0.095 | AA15: 0.104 | AC15: 1986 | AD15: 0.06008743917 | AE15: 0.04556569343 | AF15: 0.05813211679 | AG15: 0.07030583942 | AH15: 0.1633226893 | AI15: 0.1282591651
F16: 8 | G16: 0.08964427715 | H16: CD (6 month) | I16: =AE39 -> 0.02234753598 | J16: =AE41 -> -0.01084331522 | K16: =AE42 -> 0.06128161694 | L16: =AE43 -> 0.02105180085 | M16: 0.03765686858 | P16: 0.105 | Q16: 0.001 | R16: 0.106 | S16: 0.006 | T16: 0.106 | U16: 0.065 | V16: 0.106 | W16: 0.034 | X16: 0.106 | Y16: 0.004 | Z16: 0.105 | AA16: 0.079 | AC16: 1987 | AD16: 0.03283849765 | AE16: 0.03242042254 | AF16: 0.04766408451 | AG16: 0.05528591549 | AH16: 0.02086921584 | AI16: 0.02980083873
F17: 9 | G17: 0.01526665609 | H17: Savings Bonds (Treasury) | I17: =AF39 -> 0.03354189205 | J17: =AF41 -> -0.01963567961 | K17: =AF42 -> 0.07757805582 | L17: =AF43 -> 0.02262791271 | M17: 0.05493219026 | P17: 0.116 | Q17: 0.001 | R17: 0.118 | S17: 0.002 | T17: 0.115 | U17: 0.073 | V17: 0.115 | W17: 0.023 | X17: 0.116 | Y17: 0.006 | Z17: 0.116 | AA17: 0.074 | AC17: 1988 | AD17: 0.03087438715 | AE17: 0.03622789518 | AF17: 0.04631073542 | AG17: 0.05351276416 | AH17: 0.1190722826 | AI17: 0.09481843356
F18: 10 | G18: 0.09977829922 | H18: Bonds (Corporate AAA) | I18: =AG39 -> 0.04114589634 | J18: =AG41 -> -0.01544407713 | K18: =AG42 -> 0.08552811245 | L18: =AG43 -> 0.02328146278 | M18: 0.03750262472 | P18: 0.124 | Q18: 0.001 | R18: 0.127 | S18: 0.004 | T18: 0.126 | U18: 0.061 | V18: 0.125 | W18: 0.031 | X18: 0.126 | Y18: 0.005 | Z18: 0.125 | AA18: 0.075 | AC18: 1989 | AD18: 0.03037868952 | AE18: 0.0406583871 | AF18: 0.03464798387 | AG18: 0.04237564516 | AH18: 0.2543156633 | AI18: 0.1810931035
F19: 11 | G19: 0.2911761527 | H19: Stocks (S&P 500) | I19: =AH39 -> 0.07661497111 | J19: =AH41 -> -0.3892067066 | K19: =AH42 -> 0.3341422885 | L19: =AH43 -> 0.1687837084 | M19: 0.02776698785 | P19: 0.135 | Q19: 0 | R19: 0.137 | S19: 0.001 | T19: 0.136 | U19: 0.055 | V19: 0.135 | W19: 0.022 | X19: 0.147 | Y19: 0.005 | Z19: 0.135 | AA19: 0.022 | AC19: 1990 | AD19: 0.02398036215 | AE19: 0.02624942617 | AF19: 0.03042387146 | AG19: 0.03715990819 | AH19: -0.08033603673 | AI19: -0.04341606733
F20: 12 | G20: 0.1746489297 | H20: Mutual Funds (stock/bond) | I20: =AI39 -> 0.06225727809 | J20: =AI41 -> -0.258057258 | K20: =AI42 -> 0.2358764863 | L20: =AI43 -> 0.1151595762 | M20: 0.03925124409 | P20: 0.144 | Q20: 0.001 | R20: 0.147 | S20: 0.002 | T20: 0.147 | U20: 0.109 | V20: 0.147 | W20: 0.043 | X20: 0.157 | Y20: 0.001 | Z20: 0.147 | AA20: 0.046 | AC20: 1991 | AD20: 0.0271753304 | AE20: 0.01633164464 | AF20: 0.03773113069 | AG20: 0.0437767254 | AH20: 0.2497572686 | AI20: 0.1790818893
F21: Total | G21: 1 | K21: wt.avg. | M21: =SUMPRODUCT(M9:M20,G9:G20) -> 0.03378144757 | P21: 0.167 | Q21: 0 | R21: 0.167 | S21: 0 | T21: 0.156 | U21: 0.093 | V21: 0.156 | W21: 0.02 | X21: 0.166 | Y21: 0.003 | Z21: 0.156 | AA21: 0.022 | AC21: 1992 | AD21: 0.02125730577 | AE21: 0.007278118318 | AF21: 0.04523549537 | AG21: 0.04979814683 | AH21: 0.04352428723 | AI21: 0.04409468994
P22: 0.229 | Q22: 0 | R22: 0.175 | S22: 0 | T22: 0.164 | U22: 0.068 | V22: 0.165 | W22: 0.022 | X22: 0.179 | Y22: 0.001 | Z22: 0.165 | AA22: 0.031 | AC22: 1993 | AD22: 0.01139794118 | AE22: 0.002780899654 | AF22: 0.03491882353 | AG22: 0.04103570934 | AH22: 0.06770777319 | AI22: 0.0567781233
K23: Finanace Method # Sampled | M23: 7 | R23: 0.425 | S23: 0.001 | T23: 0.176 | U23: 0.066 | V23: 0.176 | W23: 0.022 | Z23: 0.173 | AA23: 0.013 | AC23: 1994 | AD23: 0.01336068938 | AE23: 0.02339541161 | AF23: 0.0468937247 | AG23: 0.05274392713 | AH23: -0.01203808786 | AI23: 0.007605849658
K24: Real Interest Rate for that method | M24: =INDEX(M9:M20, M23) -> 0.02450231787 | T24: 0.185 | U24: 0.023 | V24: 0.185 | W24: 0.014 | Z24: 0.185 | AA24: 0.007 | AC24: 1995 | AD24: 0.02231906168 | AE24: 0.03059291339 | AF24: 0.03934488189 | AG24: 0.0462492126 | AH24: 0.3341422885 | AI24: 0.2358764863
T25: 0.194 | U25: 0.029 | V25: 0.194 | W25: 0.008 | Z25: 0.191 | AA25: 0.014 | AC25: 1996 | AD25: 0.01982861695 | AE25: 0.02445047801 | AF25: 0.03649483748 | AG25: 0.04290554493 | AH25: 0.2026628886 | AI25: 0.1472735382
T26: 0.205 | U26: 0.015 | V26: 0.205 | W26: 0.009 | Z26: 0.202 | AA26: 0.01 | AC26: 1997 | AD26: 0.02686406542 | AE26: 0.03358485981 | AF26: 0.04218747664 | AG26: 0.04863943925 | AH26: 0.2890004397 | AI26: 0.206729452
T27: 0.214 | U27: 0.007 | V27: 0.215 | W27: 0.006 | Z27: 0.215 | AA27: 0.008 | AC27: 1998 | AD27: 0.0335428681 | AE27: 0.03822822086 | AF27: 0.03960674847 | AG27: 0.04896104294 | AH27: 0.2636957976 | AI27: 0.1889994479
T28: 0.225 | U28: 0.004 | V28: 0.223 | W28: 0.003 | Z28: 0.221 | AA28: 0.002 | AC28: 1999 | AD28: 0.02298969588 | AE28: 0.03181152461 | AF28: 0.03582292917 | AG28: 0.04736794718 | AH28: 0.1827318254 | AI28: 0.1337621933
T29: 0.236 | U29: 0.001 | V29: 0.234 | W29: 0.003 | Z29: 0.235 | AA29: 0.003 | AC29: 2000 | AD29: 0.01669214092 | AE29: 0.03123658537 | AF29: 0.02494796748 | AG29: 0.04120162602 | AH29: -0.1199013379 | AI29: -0.07161823608
F30: 1 | H30: 0.03578510554 | T30: 0.246 | U30: 0.003 | V30: 0.246 | W30: 0.004 | Z30: 0.254 | AA30: 0.004 | AC30: 2001 | AD30: 0.01780474308 | AE30: 0.007919367589 | AF30: 0.02571304348 | AG30: 0.04117312253 | AH30: -0.1428869861 | AI30: -0.08668697626
F31: 2 | H31: 0.02038380488 | T31: 0.255 | U31: 0.004 | V31: 0.253 | W31: 0.003 | Z31: 0.541 | AA31: 0.002 | AC31: 2002 | AD31: 0.01296802853 | AE31: 0.002254085603 | AF31: 0.03789066148 | AG31: 0.04832568093 | AH31: -0.2318058418 | AI31: -0.1419070074
F32: 3 | H32: 0.01680075624 | T32: 0.263 | U32: 0.002 | V32: 0.266 | W32: 0 | AC32: 2003 | AD32: -0.001856462862 | AE32: -0.01084331522 | AF32: 0.02621217391 | AG32: 0.03305619565 | AH32: 0.2549569798 | AI32: 0.1787087112
F33: 4 | H33: 0.04940163066 | T33: 0.273 | U33: 0 | V33: 0.278 | W33: 0.001 | AC33: 2004 | AD33: -0.007229574731 | AE33: -0.008991000529 | AF33: 0.023152991 | AG33: 0.02889994706 | AH33: 0.07870147029 | AI33: 0.06018531052
F34: 5 | H34: 0.004868030254 | T34: 0.284 | U34: 0.001 | V34: 0.285 | W34: 0 | AC34: 2005 | AD34: -0.001496330432 | AE34: 0.003307578085 | AF34: 0.0121093702 | AG34: 0.01781602663 | AH34: 0.01399041496 | AI34: 0.01336340004
F35: 6 | H35: 0.04522790903 | T35: 0.293 | U35: 0 | V35: 0.293 | W35: 0.001 | AC35: 2006 | AD35: 0.01057578125 | AE35: 0.0195125 | AF35: 0.016315625 | AG35: 0.022903125 | AH35: 0.1199966554 | AI35: 0.08543631195
F36: 7 | H36: 0.1570184485 | T36: 0.369 | U36: 0 | V36: 0.341 | W36: 0.001 | AC36: 2007 | AD36: 0.01981190497 | AE36: 0.02315826027 | AF36: 0.01936626443 | AG36: 0.02636687212 | AH36: 0.02563506794 | AI36: 0.02354546677
F37: 8 | H37: 0.08964427715 | V37: 0.361 | W37: 0 | AC37: 2008 | AD37: 0.001705675258 | AE37: -0.006736836923 | AF37: 0.004241638992 | AG37: 0.01724246573 | AH37: -0.3892067066 | AI37: -0.258057258
F38: 9 | H38: 0.01526665609 | V38: 0.436 | W38: 0 | AC38: 2009 | AD38: 0.03629600069 | AE38: 0.01230154286 | AF38: 0.04451615526 | AG38: 0.05686007216 | AH38: 0.2637377241 | AI38: 0.1906638678
F39: 10 | H39: 0.09977829922 | V39: 0.443 | W39: 0 | AC39: Avg. | AD39: =AVERAGE(AD6:AD38) -> 0.02271715151 | AE39: 0.02234753598 | AF39: 0.03354189205 | AG39: 0.04114589634 | AH39: 0.07661497111 | AI39: 0.06225727809
F40: 11 | H40: 0.2911761527 | V40: 0.472 | W40: 0 | AC40: 2x Avg. | AD40: =AD39*2 -> 0.04543430302 | AE40: 0.04469507195 | AF40: 0.06708378411 | AG40: 0.08229179269 | AH40: 0.1532299422 | AI40: 0.1245145562
F41: 12 | H41: 0.1746489297 | V41: 0.935 | W41: 0 | AC41: Min | AD41: =MIN(AD6:AD38) -> -0.007229574731 | AE41: -0.01084331522 | AF41: -0.01963567961 | AG41: -0.01544407713 | AH41: -0.3892067066 | AI41: -0.258057258
O42: Avg. | P42: =SUMPRODUCT(P6:P41,Q6:Q41) / SUM(Q6:Q41) -> 0.03036503856 | R42: =SUMPRODUCT(R6:R41,S6:S41) / SUM(S6:S41) -> 0.03879794521 | T42: =SUMPRODUCT(T6:T41,U6:U41) / SUM(U6:U41) -> 0.1071184948 | V42: =SUMPRODUCT(V6:V41,W6:W41) / SUM(W6:W41) -> 0.05935021459 | X42: =SUMPRODUCT(X6:X41,Y6:Y41) / SUM(Y6:Y41) -> 0.0440856898 | Z42: =SUMPRODUCT(Z6:Z41,AA6:AA41) / SUM(AA6:AA41) -> 0.08810882605 | AC42: Max | AD42: =MAX(AD6:AD38) -> 0.06008743917 | AE42: 0.06128161694 | AF42: 0.07757805582 | AG42: 0.08552811245 | AH42: 0.3341422885 | AI42: 0.2358764863
O43: Min | P43: =MIN(P6:P41) -> 0.005 | R43: =MIN(R6:R41) -> 0.004 | T43: =MIN(T6:T41) -> 0 | V43: =MIN(V6:V41) -> 0 | X43: =MIN(X6:X41) -> 0.002 | Z43: =MIN(Z6:Z41) -> 0.001 | AC43: Std. Dev. | AD43: =SQRT(VAR(AD6:AD38)) -> 0.01675590738 | AE43: 0.02105180085 | AF43: 0.02262791271 | AG43: 0.02328146278 | AH43: 0.1687837084 | AI43: 0.1151595762
O44: Max | P44: =MAX(P6:P41) -> 0.229 | R44: =MAX(R6:R41) -> 0.425 | T44: =MAX(T6:T41) -> 0.369 | V44: =MAX(V6:V41) -> 0.935 | X44: =MAX(X6:X41) -> 0.179 | Z44: =MAX(Z6:Z41) -> 0.541 | AC44: Source: Federal Reserve with exception of Damodaran Online for Stocks.
O45: Std. Dev. | P45: =SQRT(VAR(P6:P41)) -> 0.05946798447 | R45: =SQRT(VAR(R6:R41)) -> 0.09496266896 | T45: =SQRT(VAR(T6:T41)) -> 0.09490889803 | V45: =SQRT(VAR(V6:V41)) -> 0.1751407507 | X45: =SQRT(VAR(X6:X41)) -> 0.05496462766 | Z45: =SQRT(VAR(Z6:Z41)) -> 0.1090830876
O46: Source: Estimate using 1989, 1992, 1998, 1998, 2001, 2004, and 2007 Survey of Consumer Finances

Sheet Lifetime
B1: Lifetime
B3: Export Parameters | F3: Assumptions: | R3: Lifetime Distribution
B4: to: LCC Summary | F4: Lifetime of Microwave Ovens: | R4: 7 | S4: 0
B5: Lifetime | C5: =G9 -> 9.322323659 | D5: years | F5: Average | G5: 9 | R5: 7.03 | S5: 1.806004217e-07
F6: Min | G6: =lifeAvg * 7/9 -> 7 | I6: Values from Appliance Magazine | R6: 7.06 | S6: 2.525289894e-06
F7: Max | G7: =lifeAvg * 10/9 -> 10 | R7: 7.09 | S7: 1.181516547e-05
F8: Mode | G8: =3*lifeAvg-lifeMin-lifeMax -> 10 | R8: 7.12 | S8: 3.53104592e-05
F9: dist. | G9: 9.322323659 | R9: 7.15 | S9: 8.254695136e-05
R10: 7.18 | S10: 0.0001652074816
F11: Age | G11: % retiring | H11: % surviving | R11: 7.21 | S11: 0.0002970283138
F12: 1 | G12: =SUM((LIFE_age1>=F12-0.5)*(LIFE_age1<F12+0.5)*dist1) / SUM(dist1) -> 0 | H12: 1 | R12: 7.24 | S12: 0.0004937254716
F13: =F12+1 -> 2 | G13: =SUM((LIFE_age1>=F13-0.5)*(LIFE_age1<F13+0.5)*dist1) / SUM(dist1) -> 0 | H13: =H12 - G13 -> 1 | R13: 7.27 | S13: 0.0007729336012
F14: 3 | G14: =SUM((LIFE_age1>=F14-0.5)*(LIFE_age1<F14+0.5)*dist1) / SUM(dist1) -> 0 | H14: =H13 - G14 -> 1 | R14: 7.3 | S14: 0.001154152928
F15: 4 | G15: =SUM((LIFE_age1>=F15-0.5)*(LIFE_age1<F15+0.5)*dist1) / SUM(dist1) -> 0 | H15: 1 | R15: 7.33 | S15: 0.001658701292
F16: 5 | G16: =SUM((LIFE_age1>=F16-0.5)*(LIFE_age1<F16+0.5)*dist1) / SUM(dist1) -> 0 | H16: 1 | R16: 7.36 | S16: 0.00230966895
F17: 6 | G17: =SUM((LIFE_age1>=F17-0.5)*(LIFE_age1<F17+0.5)*dist1) / SUM(dist1) -> 0 | H17: 1 | R17: 7.39 | S17: 0.00313187423
F18: 7 | G18: =SUM((LIFE_age1>=F18-0.5)*(LIFE_age1<F18+0.5)*dist1) / SUM(dist1) -> 0.1201793306 | H18: 0.8798206694 | R18: 7.42 | S18: 0.004151818259
F19: 8 | G19: =SUM((LIFE_age1>=F19-0.5)*(LIFE_age1<F19+0.5)*dist1) / SUM(dist1) -> 0.2620989328 | H19: 0.6177217366 | R19: 7.45 | S19: 0.005397637072
F20: 9 | G20: =SUM((LIFE_age1>=F20-0.5)*(LIFE_age1<F20+0.5)*dist1) / SUM(dist1) -> 0.3216037738 | H20: 0.2961179628 | R20: 7.48 | S20: 0.006899049413
F21: 10 | G21: =SUM((LIFE_age1>=F21-0.5)*(LIFE_age1<F21+0.5)*dist1) / SUM(dist1) -> 0.2961179628 | H21: 0 | R21: 7.51 | S21: 0.008687298438
F22: 11 | G22: =SUM((LIFE_age1>=F22-0.5)*(LIFE_age1<F22+0.5)*dist1) / SUM(dist1) -> 0 | H22: 0 | R22: 7.54 | S22: 0.0107950855
F23: 12 | G23: =SUM((LIFE_age1>=F23-0.5)*(LIFE_age1<F23+0.5)*dist1) / SUM(dist1) -> 0 | H23: 0 | R23: 7.57 | S23: 0.01325649406
F24: 13 | G24: =SUM((LIFE_age1>=F24-0.5)*(LIFE_age1<F24+0.5)*dist1) / SUM(dist1) -> 0 | H24: 0 | R24: 7.6 | S24: 0.01610690161
F25: 14 | G25: =SUM((LIFE_age1>=F25-0.5)*(LIFE_age1<F25+0.5)*dist1) / SUM(dist1) -> 0 | H25: 0 | R25: 7.63 | S25: 0.01938287753
F26: 15 | G26: =SUM((LIFE_age1>=F26-0.5)*(LIFE_age1<F26+0.5)*dist1) / SUM(dist1) -> 0 | H26: =H25 - G26 -> 0 | R26: 7.66 | S26: 0.02312206438
F27: 16 | G27: =SUM((LIFE_age1>=F27-0.5)*(LIFE_age1<F27+0.5)*dist1) / SUM(dist1) -> 0 | H27: =H26 - G27 -> 0 | R27: 7.69 | S27: 0.0273630404
F28: 17 | G28: =SUM((LIFE_age1>=F28-0.5)*(LIFE_age1<F28+0.5)*dist1) / SUM(dist1) -> 0 | H28: =H27 - G28 -> 0 | R28: 7.72 | S28: 0.03214516053
F29: 18 | G29: =SUM((LIFE_age1>=F29-0.5)*(LIFE_age1<F29+0.5)*dist1) / SUM(dist1) -> 0 | H29: =H28 - G29 -> 0 | R29: 7.75 | S29: 0.0375083734
F30: sum | G30: =SUM(G16:G29) -> 1 | R30: 7.78 | S30: 0.04349301153
G31: wt. avg. Lifetime = | H31: =SUMPRODUCT(F12:F29,G12:G29) -> 8.793660369 | R31: 7.81 | S31: 0.05013955221
R32: 7.84 | S32: 0.05748834611
R33: 7.87 | S33: 0.06557931123
R34: 7.9 | S34: 0.07445158948
R35: 7.93 | S35: 0.08414316376
R36: 7.96 | S36: 0.09469043342
R37: 7.99 | S37: 0.1061277464
R38: 8.02 | S38: 0.1184868873
R39: 8.05 | S39: 0.1317965196
R40: 8.08 | S40: 0.1460815846
R41: 8.11 | S41: 0.1613626549
R42: 8.14 | S42: 0.1776552478
R43: 8.17 | S43: 0.1949690993
R44: 8.2 | S44: 0.2133074049
R45: 8.23 | S45: 0.232666033
R46: 8.26 | S46: 0.2530327182
R47: 8.29 | S47: 0.274386245
R48: 8.32 | S48: 0.2966956334
R49: 8.35 | S49: 0.3199193391
R50: 8.38 | S50: 0.344004486
R51: 8.41 | S51: 0.3688861474
R52: 8.44 | S52: 0.3944866968
R53: 8.47 | S53: 0.4207152504
R54: 8.5 | S54: 0.4474672254
R55: 8.53 | S55: 0.4746240392
R56: 8.56 | S56: 0.5020529767
R57: 8.59 | S57: 0.529607253
R58: 8.62 | S58: 0.5571262985
R59: 8.65 | S59: 0.5844362929
R60: 8.68 | S60: 0.611350974
R61: 8.71 | S61: 0.6376727427
R62: 8.74 | S62: 0.6631940821
R63: 8.77 | S63: 0.6876993062
R64: 8.8 | S64: 0.7109666428
R65: 8.83 | S65: 0.7327706529
R66: 8.86 | S66: 0.7528849748
R67: 8.89 | S67: 0.771085376
R68: 8.92 | S68: 0.7871530806
R69: 8.95 | S69: 0.8008783319
R70: 8.98 | S70: 0.8120641346
R71: 9 | S71: 0.8180206548
R72: 9.03 | S72: 0.8245831715
R73: 9.06 | S73: 0.828172703
R74: 9.09 | S74: 0.8286720085
R75: 9.12 | S75: 0.8259941848
R76: 9.15 | S76: 0.8200858498
R77: 9.18 | S77: 0.8109298761
R78: 9.21 | S78: 0.7985475661
R79: 9.24 | S79: 0.783000161
R80: 9.27 | S80: 0.7643895887
R81: 9.3 | S81: 0.7428583706
R82: 9.33 | S82: 0.7185886264
R83: 9.36 | S83: 0.6918001407
R84: 9.39 | S84: 0.6627474846
R85: 9.42 | S85: 0.6317162152
R86: 9.45 | S86: 0.5990182119
R87: 9.48 | S87: 0.56498624
R88: 9.51 | S88: 0.5299678679
R89: 9.54 | S89: 0.4943188931
R90: 9.57 | S90: 0.4583964595
R91: 9.6 | S91: 0.4225520683
R92: 9.63 | S92: 0.3871246983
R93: 9.66 | S93: 0.3524342523
R94: 9.69 | S94: 0.3187755466
R95: 9.72 | S95: 0.2864130369
R96: 9.75 | S96: 0.255576456
R97: 9.78 | S97: 0.2264575
R98: 9.81 | S98: 0.1992076603
R99: 9.84 | S99: 0.1739372511
R100: 9.87 | S100: 0.150715634
R101: 9.9 | S101: 0.1295725902
R102: 9.93 | S102: 0.1105007434
R103: 9.96 | S103: 0.09345889846
R104: 9.99 | S104: 0.07837612044
R105: 10.02 | S105: 0.06515636139
R106: 10.05 | S106: 0.05368342337
R107: 10.08 | S107: 0.04382604729
R108: 10.11 | S108: 0.03544292503
R109: 10.14 | S109: 0.02838745194
R110: 10.17 | S110: 0.02251206467
R111: 10.2 | S111: 0.01767204283
R112: 10.23 | S112: 0.01372869101
R113: 10.26 | S113: 0.01055185611
R114: 10.29 | S114: 0.008021771961
R115: 10.32 | S115: 0.006030256701
R116: 10.35 | S116: 0.004481316058
R117: 10.38 | S117: 0.003291226797
